Workbook

Sheet CB_DATA_ (hidden)
A1: Crystal Ball Data
P2: =_xll.CB.RecalcCounterFN() -> 
A3: Workbook Variables | B3: Last Var Column | C3: 0
A4: Name:
A5: Value:
A7: Worksheet Data | B7: Last Data Column Used
B8: 4
A10: Sheet Ref
A11: =CB_DATA_!#REF! ->  | B11: =Cohorts!#REF! ->  | C11: ='Costs & Benefits Summary'!#REF! ->  | D11: =Earnings!#REF! -> 
A13: Sheet Guid
A14: aab1958f-dd2d-4f6b-8a9c-1658486721b0 | B14: 3d596b5a-2184-4f13-b69d-9c56edc9d9db | C14: 29e5df2e-7345-423e-b0d2-09f464a44bb0 | D14: de392d56-7254-4a29-a99c-c85ebb082c05
A16: Deleted sheet count
A19: Last row used
A20: 31 | B20: 58 | C20: 31 | D20: 31
A25: Data blocks
A26: CB_Block_0 | B26: CB_Block_7.0.0.0:10 | C26: CB_Block_7.0.0.0:1 | D26: CB_Block_7.0.0.0:1
A27: 㜸〱敤㕣㕢㡣㈴㔵ㄹ敥慡敥敡改敡㤹搹ㄹ㜶㤶换㜲ㅤ敥㤷搹㌴㍢㝢攱㈲慥换㕣搸ぢ散㘵搸㤹㕤㈴㠸㑤㑤昷愹㤹摡敤慡ㅥ慡慡㘷㜷㄰㘵㔱〴昱ㄲ〳㍥㈸㠸㑡㠸㈱晡㘲㠲て〴ㄴㅥ㑣㑣㌴〴㡣て挴挴〷ㄳ㈴㐶㘳扣㘴愳㉦㍣㤰攰昷㥤慡敡慥敥㥥慥ㄹㅡ搰挱㑣敤昶扦愷捥晤㥣晦㝡晥晦搴愶㤴㔴㉡昵ㅥㅥ晥换㈷挳挴㠵搳㑢㥥㉦散挲㐴戵㔲ㄱ㈵摦慡㍡㕥㘱捣㜵㡤愵〳㤶攷愷㔱㈱㕢戴㔰敥㘹㐵捦㝡㐰攴㡡㡢挲昵㔰㐹㑢愵㜲㌹㕤㐵㌹㍢攱㙦㌰㝡搱搹慡㉦〳㌰㌳㌱㝥㜸昶㌸㝡㥤昶慢慥搸㌲㝣㉣㘸扢㙢㜴戴㌰㕡搸扥㘳晢つ㠵慤㕢㠶㈷㙡ㄵ扦收㡡㕤㡥愸昹慥㔱搹㌲㍣㔵㥢慤㔸愵㍢挴搲㑣昵㠴㜰㜶㠹搹慤摢㘷㡤ㅤ㌷㡤敥搸戹搳扣昹收㥢晡㌰㜴敡搰挴昸㤴㉢㑣敦㐳敡㔳攳㤴㜷㑣㡡㤲挵戵〹攱㕡捥㕣㘱㘲ㅣ㝦㘳昳挷摢㡤㠵改㜹㈱㝣づ㉤㕣攱㤴㠴愷愳㘱慦㍤收㜹㌵㝢㠱㥢愷摢㝢戰搴㤲攱昹㥡㍤㈱㉡ㄵ摤㡥㝡捤搹㠷戱㜷ㄵ㘳愹捦㥥ㄶ㡥㘷昹搶愲攵㉦㘵敤ㄹ㜴㔴敥户㡦㝡攲㠸攱捣㠹㐳㠶㉤㌴㝢㙦捤㉡㘷㠲㈷㤵扥㍡敡㈲㍥㌱戹晣挲㤸㘷㑦捣ㅢ慥㥣㤱挷㡤㐹愸扢挷㉤㌵搷扤扣㜳扦㥣扡ㅣ㠱㝤㕥搹戹ㅥ㑡㡥ㄹ㙥扤收㐸攷㥡攱攲㥢㘷㜰㝤攷晡戱㍤㙡㙥㜳㙤攷㌶㜲㉢㥢㙢㉢扤㈱㝤换ㅤ挵㘲昴㉣㐱て㐱㡥㠰〸搴昳〴扤〴㝤〰㑡收摦攰㤲㜸㐳ㄶ愹㐵㐳㉤捥慡挵㤲㕡㉣慢㐵愱ㄶ㑤戵㌸愷ㄶ攷搵愲愵ㄶ㡦慢挵ㄳ愸ㄳ㍤戹㥥ㅥ㌵㝣晥昱挸㕢慦愹㍢摥ㅤ㝢昵攱㝦愵扤摢㙢㝦敤摢㠰㑡㜷㠶㤳㥡㜴㡤㤳㈰戵〶ㄵ㙦㉢㙣攵㥦㤵戹〲㑣㘱敥㌴㙦㌴㐷㐷换㍢户ㅡ摢つ㡤换㑡㐰㝥ㄳ愱っ愲㙥㥦㜹㤷攵㤴慢㈷㈵敥㉥ㅣ㌷㍣搱搸戸㤱戰㙣扣㕡㜳捡摥〵换ㄷ㑥晢㠶㉦捥㙦㉤㙢㜴搲搶㙣ㅡ㙣㈵㍣㌹摥挵慤捤㡥ㄹ㤵㥡ㄸ㍢㘵〵挵ㄷ戵ㄴ摢㔳㙥㜵戶㜳改ㅥ㔷摣㕦㉦㙤㥢搱ㄸ㠴摡愲散扢㙤㤵㐱㔱㌰慦攱㠹昹慡㈷ㅣ㌹扤ㄱ㝢捡㉡㥤㄰敥戴愰㐸ㄴ㘵戹搴戳㔹ㄴ㜲晤挸㘱〷ぢ〵户㤶㉦㡢攷㥡户㥤昲挱捣愲㡣昹㉥〸搷㕦㥡㌱㘶㉢攲㥣愶㉡挱㤸㈸搸摣㤴扤愷㕡慡㜹ㄳ㔵挷㜷慢㤵收㤲戱昲愲〱㐹㔳㍥㔸㉤㡢㑣㈶㈵㠵〲〴㙥㍡慤㈸愹敢㍡昳㠲㐴㐴っ挵㘴攴昳㥡挹慥㜰〴慢挳㉡㉡㠲㌴愹㕥戱㐲㘷㥣慦㤴㌱〹ㅣㄸ㕢ㄳ昵〷〷扤㘶㠵㙥敢㤸晢㘸㉢慢敡㔰戸晡摢ㄶ㠵攳敦㌳㥣㜲㐵戸㠹摡㑦攱㡣昴〱〰敤っ〴㐲挷摤愳慡㔳㑥㈹㑢摡㐹慢散捦㘷攷㠵㌵㌷敦㈳てㅡ㌲㤷攳搶戶㍤晡㔹挸搲㌷ㄲっ〱攴昳愹散㈶㔶捡收昱愴㌴㑡愷〴㕥㙥ㄲ攴㙣搷挴换㝤收ㅥ慢攲㡢㐰㈸て㤸挰㐸愰搵㈴晡晡㐹愲慥㔱ちㄴ挶㈶㜳〲㔴㙡㔸㡥扦搴攰摢㌶㉥〹㠸㘸㕤ㄶ慣㌹㔹㐰㔱搰㉣てㄲ㜸つ㐴搳㈲つ㤲㉢挷㠸㠸㙣㤰愰搹搱㜳㌳㤱戱㝥㠲㡣㐰晤㌸ㄱ戲昶搶捥㌲㠲挴摥㑥愴㙣搴㤱ㅦ搷愵搹㜲戶㝣㈰捤捥挶挶改攷㄰㥣㑢㜰ㅥ挱㘶〰攵捦㤰㜰㤴㜲㐸㌷㍦晡〵㜸搷㉦㈴戸〸〰昲㐹愷捣〹㐵ㄵ㙤愸搵搸㤱慣搷て㍢㔹ㅡ挵㠱㈸愲㘵㕣户㌳晢㙤㠹攸搰敡㕣ㅢ扡㌶㈳㜵散㔵㥤㘹㌳扥ㅣ㔲㘴㐲搵昸㕡㔷愸ㅡ摦〸㔶敤㔲㙦㕤㠲愶晡㌰挱愵〰㠱㘲愱戱扢㍡㙢㥥收攴挷挲㈴ちっ愱㉥㤵㝢㐸挴㌴晦ㄳ〴㕣摢搱㘵摤㝥愶㈹㌸㘲㝥散敤攷㉤㥤㜹㍢㐴㝡㡢捥㕣搷㌹昴ㄵ扤㑦ぢ晡㌲戰㤷昲㠷㡥晡攵ちㄴ敢㔷ㄲ㕣〵搰愲㕦㜸昲㝥扦㕥〲㘹ㄲ摢㌱捣㙤愴挷㐵㕡戸㌳㑢ぢ㐲㙡㥦㍥㜳挶㜰攷㠴て敦挵晥㐹搸挱㔵搷ㄵㄵㅣ㘸换㌲㠳㘷㤷㜳㥢㌳扤㍤㙥搵㘶晥扡㝤散㝤㉣ㄴ㐳㈶愳愶㔳㉤昶㜱㠲㥤ㄹ昳㌷挵㈸㠷晡㜷㝢㘷㈱ㄱ㙢搴㑣㕥㙣㤷㝣戶㕣㤷㈴㕤㐸㤲㙢戰慤晡戵〰㤰ㄲ捡敦㍡㑡㤴ㄱ㔶摢㈲慢㌵㕢慢昴敥㈵㥣㑣㕡晣㠷㙤㜲愴㌷㜰搶㡥挳㜷攰昵摢搳㤶㕤ㄷㄶ扤昶㤴㜰㑢昰㉢㔸ㄵ㤱て㕣戲ㄴ㌵敢戲攲㘳㈲㉢搲改戶戳㜴㠲㙦㑤搲㐹㡢㤴㐸攴昶挴挲㠴㜳㜸㠳愸攸㠲愴㔰㐹㜰ぢ搵㈵㄰㈹㡦㜵搷㐵㑣ㄷ㈲愶㠰㡤搳慦㈷搸㑡㌰ち愰晤〶㤲㘶戵ㅢ捦㔰㔸捦㈲摤搹挵㘲㉡㐷㌴㐸昷攰ㅢㅤ㠵搵づづ戳㤳攰〶㠰ㄶ昳㠷捥挷〴㐲㤴㈸㡦ㄱ㈲慤㈵摤㍣㘶㠹㤳愴㠱つ㈶㠲㑡ㄳ㌵捦慦摡㡣㉡昵㥢㤳搵㐳㔵㝦搲昲ㄶ㄰㠵ㅡ㌲挳挴㕤昳挲〱㜵戹戰㝤㕡昲慡ぢぢ愲慣㥢搳搵ㅡ㐴摢晥挹戵㜰㈸挷晡㘰㑢捡㜳戹慡攰改敥㙣㡣㉥ㄴ㜹㈲㠶慦㤵㥥搸㔵㜹扥㜹攸ㅢ㘸散攸㡣攵㔷㐴慦ㄹ㌰ㅤ搳㌹ㄳ扢㠸愸㐱戹挷㥣㤹㜷㠵㤸散㌷昷扡㔶戹㘲㌹㠲挸㠰㡤挹㐰摤〱㌱㠷〸挱㔴㤵昱扦慡搳㙦捥戸㠶攳㉤ㄸっ㈶㉥㙤㙣㝡㤳㈱ㄱ捤ㅣ户ㅣて挳㐸㉣㌲㍤㘰㑥捦㔷㑦㈲㕡㕢戳㥤扤挶㠲户㈶戰㐲愲てㅥ㠹ㅡ㐵㔵㔴㔵挹愹戹㙥昱挳〳㜹㉡戵つ扦っ㠱挴㔵㑡愳扦㍣㐱㝢搳慥て攳㌳戴搳㌹愷㍥㐴㡥敡㤹改㐴㈹㑣㑥搵㙦㘲㥢㥢〱㙥摦㝢㜴㝦㈳㉡昷㠱攲搵ㅡ㍤晣〹㌲㕥㤲㐵㍤〸㐲晦摣㠶㠰㔴㤸㐷捡〱〷〲攳㝣㙢㈵扦扣㈹敢㤰晡㌶㌴㤲㝢㄰㐵敡㌳てㄸ戳愲㠲㔸戴㙤昸ㅢ㠲ㄷ㥡戱戶㔱昱挲戲㠹慡㙤ㅢ㈴㉤㤲攵㜴挹㈰〵㡦搵晣敡㐱换搱㑤〰㐹㝦㘱㤶㜱ち㔹挶㈹㤹搵㘷ㅥ㘱㔸㔰愶搹㔷㜵捥㜰㉤㝦摥戶㑡㌹扥㌰㜴户㈶㘸ㄲ㑣㑥挹ㅢ㍤㤱捣ㄸ㙥戱收㡦挲㘴昳ち㐰㜷〱㜲㤴㕢㐷昴㠳㜲㔵㈵㡢㍦㑡㤷㡥㈵〸ㄸ改㈵搵㙦㐱㙦㥡扣ㄹ〱㤱㈳㥦㌳搱晤㡢㌳て㈱㈷昰换ㄱ敢〹㈴〲㡦㘰㑣挸搳扤㥤㌵㡦㍡㤶て散ㄱ㘳㝢㉣㝦搲〳捡〱㤰㤴挷摢昳㈵㔶㘳㡤㐶敡㕡攱㤲昶愲㈶㌵㜱㜱㝢㜹㕣㙦㕣戱㑣㜱愰㔱㘲㡡㘴愵㑡㔲戳㉣㌳挷戵愴㙡ㄴ愹戸㈳㙤愳㈴戹㑤ㅢ晢㑥㈹昲〱ㄴ㤳愴㤹㤴扥㑢ㄲち㠲扣愴づ攸㈸晡敢㤳挹㈳ㄶ慤愱つ㤰愷㥥ち昲晡挳㜰攰㝥㕣㌹㈹㡢㝣昸〶晥摥㄰㈶て搷晣愶ㄲ攳搴㔰㔸㌲㔶愹ㅣ㜶㘰㈵㤴っ户扣㐶㔸ㅡ㙢ぢ㌴㡣攴捥㙥戵㝦戰扤㌱㐶っ搹㤰㈱㤱〴㍦㌰搸㄰捣ㄵ㡢愶搲㍡敢攷㔶搷戳㜳㝣㍢㈸っ㐷㘲㘰摡㉦㑦㡡㐵㘹㠶㌵㉣昹㈱搹愰㝥㕡㤴㜲㔴㌷挷㘶㍤愸㜴㥦㜲㍣㑣㐹〶搷捤㈳㜴㑢攱〲〳挴㙥㤸㥡㉡昹〸敢搶㍢攰挹㘰敤㘰〷㍢ㄲ㠴㑤㘸㥤㔱㠲㘶ㄳ〸户㜹ㄱ攴㥤㉥㌱ち㐱㙡捡攷㥦扢㤵愷㥦攲昳攳摤愹㈸ㄱ㌲ㄱ㐳㕤〹搶〳㤰ㅢ㡦㑡㤲㡢㠶愲㘰㜹㈰搹愴搰敡㡢昲㘸㘲昴搳攴㜳㝤摣攰㘱ㅣ㙢㠰㙣㔳挱ㅤ㌷摦㠲㌶慤㉣㙤㌰昷㍢愵㑡慤㉣愴㉡㡥㘴戵搴挸㙢〲㕦昲晡㕦挰㑤〹晢ㄲ㙥捡㝥ㅣ愵戸㘴㈲愹㝢扢㕢晦ㄴ㥡㑢㈱㠷㍥〲搹挶攰㘳㠲㕢㑥〶挳摡敥㈸搰㍥摣搸戸扣㈰㉦捥㐱愴戵㘵㔱㤶ㅤ挰㕤扣㝡〴㔹㜲㕢慣摡㠱敡㠱㉡㙤昶㔸搶㍥㉢挸㕡ㄳ㌸挲㍡〳㠱㤷捤挲ㄸ改㤲㍢搸㐹敡㑣ㄸ搹㍤昳㤰㝣㑤㥤搹ㅤㅡㅦち攳扢㍣〵愵戰慢㘰㈴ㅡ摣㙡挳敡㔶ㄸ昹愵攵慤摦ち愰㌰〴㑣㠳ㄶ㌵〳〳㘷ㅣ改㤵つㅣ〶㈳ㄳ愲愳昱㐰㉡㘳㤴㐳㜰搸〳㘹攰㈶ㅥ愴㘷慡㔰㐲晥㈶㜹㈹㉣扡㤷㌸㘲攳〸㔴㜵捦㘹挹㥣㌲㝣㕣㝤㜱㌶户㘴㡦㤵换㌴㜷攱㥦㕢ㄳ㔸挵戵㡤挰ㅣ摤搴㜲㈱㑢慥㠹昶摤攵㉤〵攱㐵挱㙤㤳㠵㝤㠶㕦㥡㥦昶㤷㠲㑢㕢摤㤲㠴昶㉡晣ㄱ换㡥㑥㥢㌹攳昰ㄲ敡㈲昷㍥㝦挲愹㥥㜴攴扣㌴㡦㌷晥㘸挵敡㍤㍤㥣㘴㍥昵ㅥ晥挸㐷㑤㘹慦愰挷搵㑣㥢ㅤ㌴ㅣ㈴散㐷㍥㠱㌴ㄸ㐶㍡㠱㑥㘰扢搷㙦っ㤰㑥㌶戵搰㠹ㄴ〴敢㠴攲捣㝤㘸㠴愲晣ㅣ㘸㈵戱〴㐷㜲散昹昳㘰㝤攵㘷挸㈱挲昱ㅥ㡡ㄱ敤㔲愴ㄲ㔰㈷〵㜹㜸扤㠳㤷㐱晥㝦戰ㄴ㜱昳戲散昴㕦㘰㘶攵攵㔶ㄴ㕤㑣ㄴ扤搴㡥㈲〶㘲摦㔷挸㥢戳㕦㍦㙡㝥攴搷㝡晦㠷㐷捤摢㠱㘱㍥搲ㅡ㐳㔰㡤挱昸扡㌱㤰㙥㌳〶慥㐴戱㌴〶敥㘰ㅢ挶敢〳㘳㈰昴㜶ㅣ㐴挶捡挶〰愳㜸〹㈶㕦㉣愸ㅡ㜳㘰昰慣㜵㡥㑤㑦搸㍥㕣慦ㄵㅥ㈲昷㔰㑦摥〴㝣㑦攷戶㘷㑦ㄹ慥㘱㙦㤶昹㝢㕤〱戵攵捥攰扥戶㙣挲ㄶ攷㉦㕢㈲ㅢ㉤攳㤵㠸晣改敢㥥㤳搵摤㔲〷愶㠲㈷㜰搴㉢㌹㈵晢〱㝣㈲ち㑦〸愹捦㙤晡挹摥㍦㍥昰挸㙥摥㑢ぢ㘹㔵㘳㈰戸㥢攰㍣㉤〷㠴㙦㘳㔷㐲捥收攷㌷〷昱㈱㤲戵㔰ㄱ攳㠶㉢敤ㅤ㑦户愳㘴㐰㜸㌱挲っ㠸㙦㉤ㄸ㤳戸攱㄰ㄸ㤳㠵ㄶ挷愶晣㝣㐹㍡〳ぢ戱㠹㑢敦㕤ㄴ㈰㔴㍡慡慣㉥敤㑡敤愷㔰㍡敦㜳㈲捤昶㈰捦㤷㝣ㄴ攵㠵㔶慤戶㤳㕡㑤㥡㠹捡〸㙡㐴㔲ち㤱〶㔲㐸晣挸挲搰扦㤴㔲㔳㐸㘸〵㠰㠴ㄸ㕡㙢㌰㤷㈷晦㜵㈱㈰敡搷晢扡晣㔴〵扢〸㉣㐶㕥昷㙥捦慥戴㍡㈳搵挴愰慣㍣㝤摣㠹㠴㍣愶㌰㠳㔱㕡㤹㝢〴㠹攸搱㐶㤱㕡戵攳㠹㠳昴摢㐱㠸㉤㘰㙣捤愶㔷㉤㙦摦收搴㜰挷〳㝡㈶㉢ㄵ㠶戳㤱搹㌸㝡捡㘸㕣㔰㌵ㅦ㘴ㄱづ〴挹㝡愳摥戰〸㍡换搹㡣昳㈷挲㝣晣ㅥ㠸攵㈳㡤慥捦㙥㉤愱㡥㜳㝡戰㐰晥㘰㝦㕤㥣挰搸ㄸ㤵ㅣ〳〹扢慡㕡戹攰ㄲ昸㌴㥡㐸㝢㕥搱ㅢ㐹㡥愵㈸㡣㐶㐷㥣㤵㔶摢昴㍦攳搴㤲戳㘶㔸㥢〱敢㈶晤㝦っㄹ㉢敡㝦㠵㔱㌶㠹戲扢挲〴㕦㌴㐶㑡㔶っ捥㜰㐷攰挳㐶㤸㐶ㅥ㠱㜵㤹㘴㜰㍢㐸㑤攳ㄳ搵愰㔸㑡㜰㜸戸㌲慤㤷㈰敡㙤㘹摢昶㜶ㄴ㠰㡣〲㘹㍦㠲〸敡搸㥥㤳㙥㍦挷㘶敦㐶昶愶㠳㔶挹慤㝡㔵搳ㅦ㥥㐶㜸㜷㤸㕦㤸㤹戰㜹挶㤴攷㕢㠵摡攵搸㠹扥㝢搰收搰㘱〸散㐳挲晦戰愲㡥㡣㈱慣㉥㘶挱慦㡤〶㘳㠱㈴㙡〷敦㉣昳捥㥡㔱挱〷慡㠷攱搵昴㤹戵㈶㤴㕤攰㕢㙥扤㡢挱慤挳㙤慣㍢攰昹ㄱ㤵〲挲㘰㜲〹昷摣换㝤㙤摤㠳收扡攱摡㍣搶散捥扢㤶搷㝥〸㥣慥㙥㤴㘶㤲攱㤸晣敥㌸慦摦㑢㠸㌸て扤愳慢㜷挵戲户㈱搰㜹昸搹㌶㕤㕥㈳ㄵ㌸捡㔶ㄱ攷晥㉣㥡㉡户ㄲ攰愷ㄷ挳〴㕦ㄴ晡昳㙥㘱攲㔹㉣㡢っ㠰㜴㉡㙢〰㜴愶敡敦㉦㐷搵ち㡦ㄶ愴挲扣昲㍤㤴㜳㤷㠲搵㤶㤹㠷愳㠶㍣㐲㈰慤ぢ㠰攸㔱㜸㠴㤰攳㍦㡤〶昵昱攷㤰摢㜹晣敦㉣㍢㍥㤵扦㕣㕦扣晦挱㐸㜹攸挷㔱慣㥦㈰愸㄰搸〰㠳㤱づㄹ愰㔸愴慣挹〶㐱㠴㤷㜷㈳㡤攷户攱扦㙦敤㝥攳㜵㍥㝦摦慤㐸㐱㠸愲收㔵㔰㄰捡㔵㍣ㄱ㕦挵〲㜲㍢慦攲㥢换慤㘲㤰㌲㤲㌳搱㕤㠰晥戴㐲㕡㤱慢昲㤰攰㠶昲愷㐸㠴㈲搱㌴㡢㐱㈲㔶戶慤㈱㠱戶摣㜹搹㜶ㄱ㠹愸敤㘰戴㍤ㅡ㜷㈴攱㕢ㅥ㘹㈸昱敥㈳摤㌷搹挰晦㥡つ搴㘳捥づㅤ慦㙢㐲㐸㘰㙤晣㌸戶愳㙣捦㜶ㄹ搴㔷ㅥ㡦㌰戴㙦㕦昴愱㤴ㅡ㠶㤹㐰㈱㠱㘹㑡㡡攲㐶㉡㕦㠹㉡扦昰㘲挳㑢㡡〲㍣㈰愳愰㌲㈹㑦㔶㝥㉣慡扣つㅦ㘱挹㍡㈹㕥ㅡ攰昳㔶㔴㤹ㄴ㉡㉢㍦ㅡ㔵晥摢戶捤昵捡ㄱ㐱〶㍤㙢愴㤶〴愳㔷ㅥ〳㘲ㅦ㘴昳㜴慤㤹㔴愴扤㘶㤰㑤ㄱ㉡愳挵ㄵ愹㑡晢㜰晦挳挵㈷搱〷㜰㥤〹户㍥㈰㙤㠳晦ㄹ㘱㍦慥㌹㑤ㅡ扥㠱㉦㥥ㄷㄱ㕦㜶㜵昹挶挶㔹昳戰㡢㡣ㅥ㜳扦㠷挳㔵㜹㑤㤱〸散㠲㑣戰扦㉢昸攱ㄳ㙣挸挶㝥㐴㜱㌱㤵搷㐶扡搳㈲㌲㤶㤲㔱ㅥ㠹㌰㥢㍡摤愰ㄹ晤昳㐰づ攴㈵㈰ㄳ晡ㄷ〰㠳搸换㈶㘶っ㔲㄰㐸㉥㍦㡤㠴晥㌰挱ㄷ〱昲ち戹㥥㜴㤰晤ㄲ挰㐰昴晦㔲っ㉦㑡挷㠹慡㍣ㄸつㄶ㈷㈳晤换㙣昰㈸㐰ㅡㅥ㕢㈵㈴挲扣晥ㄸ㜲攲㠳㔲㠲挸㐱ㅦ㘷挱㔷〹扥〶㤰搷㌸搹㔵敦ㅡ搷搴愵ち晢㍡㥡㉡摣ち㈹搰扥ㄱ㈶昸愲㥤〶戸愵戳搱捣㌳㜱昴ㅤ㍦愲㥢㑤ㅦ散摦㠶て昰㤷戸攸㌴晥晦ㄱ㑤㕡昸ㄹ昵ㄳ摤昵㐵㈶搰㌸ㅦ晥㕣㙣昶〷攸㠷敢㙡ㄸ㥢散昱㤳昸攵搴慣昲㌰晥㍤㡤㥦㜲㍦㐶攰㈸㔴戹㌹昸㕢㐸〳戲㘰㈱㉣愰敥搲㥦〰㔰㠸㘳攲㐹㝦㤲㙦㐴㉤晢搷扦ㄵ㈶昸愲㄰慦愷㤹愸㠴捤愳〱㠹㙢㔹㜰愲㘵㐰攲㕦ㄶㅣ㡦て昸㙤攴㉡ㄲ㔹㐸㌴慢㈷㈲㉤挳摣愷〰晡搳〳㥣ㅢ搵㥤㝡㑡㈹摤㔷扥敦扥㜷〶㌲挳攷㘷㍥㝤㙢摦㔳㙦扤昶昶㤳㙦㝥㘶搷㕦摥㝤收㤹㌷晦昴攴敢敦扥㌲扢敢㔷捦㍤昷换摢㝦昰晡摢ㅢ捤㘷搵ㄷ摦㌹昰散㠳愳㈷ㅥ扣摦㍣㝡摤摥〷敦㍥㝥攷攸搴㔹㈳改㜴㑦捦搵㐳扦㍥敦㥡挱搳昷扦愴晣攲昷攷㍡㡡㕣㉥〷ㄴ〰搱㌳挸㘵换㘹㝣ㄷ〹㑣㠳㌳晥㐸愷挱攵㥥挶㑦㈹㠷ㅢ㌵㡥㤷ㅣ㥣ㅢ㥣㠰㉣㈸㌵ㄷ昴晥〷㌹㘷戴ㄶ | B27: 㜸〱㤵㤹〹㔸㔴㔵ㅢ挷攷っっ㌲攰㜲㔵㑣㑤晢扣愵㘹ㄹ㉡㈰㙥攵〲づ㥢㈳〲收㤲晢㌸っㄷ㥣㘰ㄸ㥢〱ㄵ㑢㜳挵㈴戴ㄴ换ㅤ㌰㌷〴〶㜷㜰〵捣〵㔱ㄱ昷摤㠴㐴㑤㔳㑢戳㜲捤敦晥捦ㅣ㥦㐷扦敥改改㝢㥦㝣㜹捦扣扦㌳攷㥤㍢昷晤㥦㜳㈷ㄵ㔱愹㔴捦㘵挳㕦㤸㉢㠲收〳㔲散㐹㤲愵扤捥㥡㤰㈰㤹㤲捣搶㐴㝢晢㐰㥢捤㤸ㄲ㙥戶㈷戹挸㠰㥢挱㉣攷敤ㅡ㠳摤㍣㔱㜲㌷㡣㤳㙣㜶ㄹ搲愸㔴敥敥㕡戵㥣㙦挲晥〹㉦〶㕡捣搲扡挲挹㤴㑡敢〶㔷ぢ捥ㅤ㑥ぢ攷〱攷〹㔷ㅢ慥づ㕣㕤戸㝡㜰〲㕣㝤戸〶㜰つ攱扣攰ㅡ挱扤〶搷ㄸづ㑢㙢㥢挲扤㉥扢摡捤㘴㌷㔰搷㍢㌲晡㘳昹㠳っ㐸戲摡㈴㙦㜱戰戳摣ㅥ扥扥敤㝤摢㜷昴敦搸戹扤㡦户愸㑢㑥㐸㑡戶㐹㍤ㄲ愵攴㈴㥢㌱挱㕢㡣㑡㡥㑥㌰㥢晡㑡㈹〳慤昱㔲㘲て㈹摡愷㘳戴搱扦慢慦㝦愷㑥戱摤扡㜵搵攰ㄳ昹〵㐹㈶㌳㍥扡㈴搹捣㠹㜱敤㜵扤攵晦㕥㕡㑢ㅥ㜵㤱慦愲捤㈶㈵ㄸ㜱ㄹ㍦㤴㘲昱㔱㥢㕡〲敤昶㘴换㔸扣攴晢㤱搵ㄶ㙦ㅦ㈳㐹㐹愱挹收ㄸ攱攵っ㕥㜸ㄹ昵攳愲㝥㐰㙢㕢㜴㔶㈹㌶搶㙣㌲㑢㠹㐹㡤搸㐰慥㑦ㅥ挹敢捡㥦㜹愰戵慥㈵㜸㠲㐹㑡搰㐹〹〹昲㑢昶㍡㤶㐱㜶改㐳㘳㘲㥣ㄴ㘱戴㐸ㅡぢ摥挵㐵㌶㤵摡㔵攵攲挹㙥〲扣昸㙦㘲㌷摦㝦㜳㌱㕥㔹ㅦ㕦づ㜹昹扤昱㠲㙢㡤㝣㍢扥晣㈲㙥〹戵挱愸㌶㐴慢つ㈶戵㈱㐶㙤㤰搴㠶㔸戵㈱㑥㙤ㄸ愳㌶㤸搵㠶㡦搵㠶㜸㤹㜹㘱敥戵㙡愹㤹つ㡢ㅦ摡㘳挶㥢つ㈳ぢ㤷㉦ㅢ㝣愷晣晣㐵㜲㔵㝥㙦扣晦晤攳㡥搱挷戶㙥散㤷㍥戸换扣㔴昳㍢㌷挹㡦㉣昱户ㄹ搵㉣㈱㉥㡤㑣㕢愴㙦ㄷ㍥㘳挵㘲㙤捤昳㘷愷㥣慢㔵昵昲搰㡡〸挹ㄵ挶㌵㥣ㅢ敢㔲㈷扤㈰㍣㝤㤰㝡愵㔹慣戵㡤攰愶挷扤㐲㝥攰㉤㜱㤹㈵挲㌴㔳搶戸㤵攷〴㙤〸㜸㍤㍣敦晥愴敦挹㈵摥㡣㡢㉣㌱扤戹㝥㝡㥢㑦㍤㜴ぢ捤㝤晣㤷愷愸敥愲ㄲ㤵ち㐵戵㐶㐰捥㌳敥摥㤸㥣昴攴㘲㌱㍣㝤㠷㕦㘵挲愸扤㥦ㄲ㌴㈱㉤敡ㅣ㙦㠹戳㉣昱摤攳〱㥥扢捡㐳晡㘵敥ㅡ昷㘰昴ㄴ愲㈲㘷㜸㌳㑥戳挴戴づ挳㙡扡㔷㔷〴㙦㌲㍤㕢摣㐸摣㜹て㤵㌸㡢昲㐶㐰㑥㌲捥愵㝥敥㤶㔵攱攷挲昲㌳挵㈶攵扢扢捥㈵㄰〵㕡搴〹摥ㄲ挷㔹挲攳昱扡晣敡㤱㘹㝤昲攲㙥㜸㕣扢㜴慣ㅢ㌹挶㥢㔱挹ㄲ晣慦捦㡦ㄶ㔵挱戸晢㐳换扥㌹摢愸慡㜷㡥摥㕣㜱搹㝢攴㑤〲㤱愲㐵ㅤ攱㉤㜱㤸㈵ㅣ㔷㕢攷昶㜴搹ㄶ戶慤愵慦㘳慢搷改㙣㜲㠸㌷愳㥣㈵㜶扤敤㠸㈹晦改㑡挴㥣㘵㘷攳ㄷ慤攸户〹㤵㌸慦㔴㔷〴愴㡣㜱搹㡥摣挰捡㔵㜹晤愶扢㘹挴搴㤶摡挹〴愲㐹㡢㍡挰㕢㘲㍦㑢㤴摣敦㘰㍢㌰愰㐹㘰㔶昹㘰㥦㠶扦㌷㑤㈲晢㜸㌳昶戲挴挹搳ㅤ摥㡢㝤昸㐳挸㘲㜵㔱㔵㠳㜴敦㐸㔴攲㉣慡㈷〲戲㠷㜱㌳ㅣ户㐶㍣晣散捦㠰晣㠲慣摡敢㝡㕡挲〹㤴㡤ㄶ㔵捡㕢愲㠴㈵搶㌸ㄶ捦搳㝢㥢㐳ㅤ敤ㅣ戱愱㙢捥昴㈷挵扣ㄹ扢㔹㈲挸㤸攵昵㔷换㌹扡㈵づ㝢㠷㐵挱㠵㈵愸挴㔹㔴㄰〲戲㤳㜱㌷敢〴㐴㍣摡昶㌴㌸戳昲㘲㥣扥㘰㐵〳㠲㑤㠵ㄶ戵㠳户挴㜶㤶㈸ㅢ㝥㍥㍢㘲攳敡㍥搳ㄶ㉥㜰㌵挴㍦㈰㘴ㅢ㙦㐶ㄱ㑢晣搲㙣愵扡㐱挳㜵晡摤㔹㑦㐲㐹㜲昹㜱㔴攲㉣㑡㡦㠰㙣㘵摣改晥㤵攷㝣㌶㕢㜴㍢㉡挷㤶攴㑣㈲ㄹ〴㡡㐶㡢摡挲㕢㘲㌳㑢㝣ㅦ扤收挰挹愳㔳晡愴㕦㌳ㄵ㥦敤摤搴㐴㌶昱㘶㙣㘴㠹㔳㕦攴㥥昹慤昸㐰㔰挶晢㐳㉤㤳㙦㡥敥㡥㑡㥣㐵㐵㈱㈰敢ㄹ㘷摡㜰敥晡捥ㄹ〷㈳㑢ㅥ㕤㠸敡昰㠱㜰㠹㘰搳愵㐵ㄵ昰㤶㜰戰㐴㤱捡㍣㝦戸㝦㘸挸搲㈷㥢〲づ㡦摤㍦㠹攴昳㘶攴戱㠴敢昵㔳㑦㐶摤昵敡㕤㌴晣㤳㌶攴㜰㝣ㄵ㉡㜱ㄶ㌵ㄸ〱㔹挷戸搲改㠱扡㜳㔵摤挲㌲收㠷ㄷㅥ㜲㥢搳㡢攰㄰㐰㡢捡攱㉤戱㤶㈵㕡㝥戶㝡扦㑢㐶愶㙥㐶晤昱㐲㘶攷挷㤷挸ㅡ摥㡣搵㉣搱㕤㕡愶㕦㉡晥ㄱ㤸㔶㜵戰㠳㙢㘲收㌲㔴攲㉣㙡〴〲戲㤲㜱〱㈳㉡㉣㝥搹㜷㈳搲㥦摦㜸㜰晥敡敤摡〴㠷ㄲ㕡搴㜷扣㈵㔶戰㐴扤摣摦㔲慥ㄵ㙤ち㥣昲搱挴〳㠹㤱愱戳㐹㌶㙦㐶ㄶ㑢昰慦㔴㌴㉤㙡㌹攳ㄶ㑦ち㥢㘶昱昲改扢挴㘵收慦㕥㔳㥦ㅥ㈵㌸㈴搱愲㤶昱㤶㔸捡ㄲ㝥㈵挷㐳挶㕢扦搳愷㠶扥㌵愱昸捡敥㄰戲㠴㌷㘳㌱㑢㘴攷㔵挶捥敢晢㔰攷㈰㘶㔳摥摥搲晤愸挴㜹愵挶㈰㈰ぢㄹ㤷扦慦㘷愰㜹昳㘳摤㥡㜷摥㜰捤㈸捤㉣㈴㌸戴搱愲扥攵㉤昱つ㑢晣昲㝢摡㕡㝤㥢㌴㕤㔱攲攳昲㥡扢愶挱㘴〱㙦㐶〶㑢㜴慦散搷改㜹㘸㘵搰㠶㙡挷散挰搴搸㤳愸挴㔹㔴㈲〲㌲㡦㜱慡摢㐷㉦㕣㔸摢㉤扣㘴摡攲㘱敤昶扤晢㌹挱㈱㤲ㄶ昵㌵㙦㠹慦㔸㘲敥捣㍦㕤㈷摥㠹て㥥㌷㘲㠵慦摥㉥づ㈱㜳㜹㌳收戰挴捣戲㐳捦敡て昵〹㕡搰㈲搳㍤㔸㜷愷㌹㉡㜱ㄶ㤵㠴㠰㝣挹㌸摤摤㘶㕦㕣慥昳㜶㔰㐹㔴㕡戶㈶攷挴ㄹ㠲㐳㉤㉤㉡㡤户挴㙣㤶㌸搵攴挷㥣㔶收昳扡攲搰慢ㄳ㜲㝥㕥㔲㐳扥攰捤㤸挵ㄲ晣ㅢ㝤㈲㉤㙡㈶攳昶㉥㜸㘳昹搹慦㤲挳㡡摡㑥敥攱㥡㍡㈷㤱攰㤰㑤㡢㥡挱㕢㘲㍡㑢慣摡戱㘲昵挹㜳慢〳㘶捤戸昰愴摤愹㤵昷挸㌴摥㡣愹㉣ㄱ昱昳㘴昷㔱ㄵ㍤〲㔳㑢㜵㠹户㌲敦敦㐶㈵捥㉢㌵〵〱昹㥣㜱挷㉦晥㜴㔷ㄷ㤷愵㥢㝡搳ㄶ搵愰戱㝦ㄷ㠲㐳㍦㉤㙡㌲㙦㠹㐹㉣昱挰戱㈱敦搱挱㤱㠱㜳㑣搲愱挰㐱捦㍡㤳捦㜸㌳㍥㘵〹晥㠶㥣㑡㡢㑡㘱㥣㤰昹戰㙤昶搴㤲㠰攵㈷户㐶㜵㥡㍦摤㐸昰㄰㐲㡢㥡挰㕢㘲㍣㑢㔴摡换慡慦〷〴㠴收㝡戶ㅢ攸ㅤ昳搴㐰挶昱㘶㈴戳〴晦㥥㑡愷㐵搹ㄹ㜷㜹摡㜸慦㠰㝢户㐲㌶ㄶㅦ㉡扢摣㘰㥤㥤攰愱㠸ㄶ㘵攳㉤昱〹㑢愴改戶㕥㑡ㄹ㥢愵摦搴愶㝣昳㡤㔹ㄵ戵挹㔸摥っ㉢㑢昰㑦㥥昳㘹㔱ㄶ挶㌵摤㜷戵挲㝢换ㄴ㝤挱愶ㅡ㑤摤晡慢捥ㄳ㍣愴搱愲ㄲ㜸㑢挴戳㐴㐹摢㉥搵㜱昵戶〵㝤㙢ㅡ搹晦㜲㉢㌱㠶㝣捣㥢㘱㘶㠹晤捤㡥晥昱㜴敤昰搰〵㜹㝤㡦戴㙣扥㜴㈰㉡㜱摥㔳㡢㄰㤰㌸挶㥤㜰散昱㉣挹㈸ぢ㜷ㄴ㍣ㅡ㔲昸㜵㡢㕥〴て㡤戴愸㔸摥ㄲㄲ㑢慣㉦敦戸愵昵愸㠵〱㕦捥㙥ㅤ㜱捣敡搸㐸㘲㜸㌳㑣㉣挱㍦扡㘴搲愲㡣㡣㝢昶㘱昷㔵愷㤷ㄷ㠴慥敥㌴㘴㝡攵㕦㘷〴㠲㠷㔸㕡搴㘸摥ㄲ〶㤶搸㜳㜱晤㥤㈷挷㜶〴慦㔸搶慥昰愹㡦㕥㐳㐶昱㘶㡣㘴〹扥愲慦愲㐵つ㘷摣扡收搵㐷ㅦ扣㜷㑦㕦戲㌶㉥愰㌴㝦挷搷〴て搵戴愸㘱扣㈵㠶戲㠴㝢攴捥ㄶ摦㝥㤰ㄵ戹愸捡戶愵㘳㥦㔶㈹㘴〸㙦挶㐷㉣挱晦晡㜲㘹㔱㠳ㄸ㜷戴㌲㜳晢昰挶㜱ㄱ㐵㥦㙣㕦攲㥤摤换㔵㈳捡改晦晦改ㄳ扦㑤㘸改㌳慦晣㤰㙦搷㔸㐲慣㌶扢㡢㡢搲㙦ㅦ㘱㐶晢㤸㈴㘳㜴㠲昴㡦㐹㍣扣㙡昳攱ㅣ戲㈳㜸〲ㄳ㌱㉡㠰㕢㉦㍢攲㉤㍢ㄱ愳つ㜰ㅢ㘵㐷昰昴㈱㘲㠴挳扦㜶戳散〸捥晥㈲㐶㕢攰戶捡㡥攰攴㉤㘲㔴〸㔷㈴㍢㠲㜳慦㠸搱㌶戸敤戲㈳㌸㜵㡡ㄸ敤㠰摢㈹㍢㠲㌳㥦㠸搱㉥㌸㠸㉣挱㠹㑢挴愸ㄸづ㈷㘹㠲昳㡥㠸㔱㈹摣ㅥ搹ㄱ㥣㌶㐴㡣扥㠷摢㉢㍢㠲扤㕥挴㘸ㅦㅣづ〱〴㍢慤㠸搱〱戸㌲搹ㄱ散㜳㈲㐶〷攱捡㘵㐷戰换㠸ㄸㅤ㠲㍢㉣㍢㌲㐵㜶愲晣㑦㝢〴慥㐲㜶〴ち㉢㘲㜴ㄴ慥㔲㜶〴晡㈶㘲㜴っづ攷㙢〲㜵ㄱ㌱㍡〱㠷㑤㥦愰户㐵㡣㑥挱㥤㤶ㅤ㐱㘷㠹ㄸ㥤㠱㍢㉢㍢㠲晢㕡挴攸ㅣ摣㜹搹ㄱ摣㔵㈲㐶ㄷ攰㉥捡捥ㄵ㕦摦㍦㝥挹㜸ㅣ昴〸户ㅡ㘳㐲㡣㈶昹搷愴㕡散户㈴㜷㥤搵㌲搶㘸㤳㙣〲敥ㄵ㥤㌵㐶㡡戲㔹挷㤹㘳㈴㥢㍢㕥ㄸ㈰晦㑣收㡡扢捣㙤戰㌱㈱㔹戲换㍤攴愲搲㘸㍣摤㤵搶敡昳攲扤㕡㈹晣っ搷攷㙦敦㝦扢㝦搷㕥㜲㔱㉡てて昴愵昶ㄲ摣㘵搹ㄱ摣㠵昸㍣晦〳晣〰攰ち〰摣㤸ち㐰ㄵ㠰㙡〰戸㘹ㄵ㠰ㅦ〱㕣〵㠰晢㔸〱愸〱㜰つ〰敥㜱〵攰㍡㠰ㅢ〰㜰摢㉢〰㍦〱戸〹〰㉤愱〰摣〲昰㌳〰㜴㠹〲㜰ㅢ挰ㅤ〰攸㈰〵攰㉥㠰㕦〰愰愹ㄴ㠰㕦〱摣〳㠰㠶㔳〰敥〳昸つ〰㝡㔰〱㜸〰攰㜷〰攸㑦〵攰て〰㝦〲㐰换㉡〰て〱㍣〲㠰㜶㔶〰ㅥ〳㜸〲〰ㅤ慥〰㍣〵昰っ〰扡㕦〱昸ぢ挰㜳〰㄰〴〵㐰㐵㘴㠰挸㡥㐰㉣ㄴ〰㌵〰ㄷ〰愵捡〰㝥㔴搶㙡〰散㔱〶摣〰搴〲〰戹㔱㔸挲ㅤ㠰ㄶ〰愴㐸〱昰〰攰〹〰敡愴〰搴〶㔰〷〰㤴㑢〱愸ぢ愰ㅥ〰㠸㤹〲㈰〰愸て〰㐲愷〰㌴〰搰㄰〰戴敦㔵〰㡦晣㕡㉦〰㡤〰㐰ㄷㄵ㠰搷〰㌴〶〰愹㝣ㄵ愰摤摤〴㐰㔳〰㤰㔱〵攰㜵〰捤〰ㅣ㔱〶㥡〳㜸〳〰㔴㔷攱ㅤ晥〳愰〵〰〸戱〲㈰〲㜸ㄳ〰㐴㕡〱㜸ぢ㐰㑢〰搰敤㔷〱㝡ㅤ㕡〱㜸ㅢ〰㌴㕤〱㘸つ愰つ〰挸晣慢〰扤づ敦〰㜸ㄷ〰戶〰〵愰㉤㠰昷〰㘰㔷㔰〰扣〱戴〳㠰ㅤ㐳〱㘸て愰〳〰㙣㈲ち㠰て〰㕦〰搸㘰ㄴ〰㍦〰ㅤ〱㘰捦㔱〰晣〱㜴〲㠰晤㐸〱攸っ愰ぢ〰㙣㔱ち㐰㔷〰摤〰㘰晢㔲〰摥〷昰㠱散〴㙣っ㌰〱㥢〳㑣挰㑥〰ㄳ戰ㅢ挰㠴㉡晡㐷づ慡㕦〴搰㝡㤸〰扤㠷〹㄰㜷㤸〰㠱㠷〹㔰㜳㤸〰㐵㠷〹㤰㙦㤸〰〹㠷〹搰㙢㤸〰捤㠶〹户㥤㝦㔵〲㐴ㅡ㈶㐰㤱㘱〲㔴ㄹ㈶㐰㠲㘱〲㘴ㄸ㈶㐰㜳㘱〲㜴ㄷ㈶㐰㘴㘱〲㠴ㄶ㈶㐰㔵㘱〲㤴ㄵ㈶㐰㐶㘱〲愴ㄴ㈶㐰㌷㘱〲戴ㄳ㈶㐰㈸㘱〲挴ㄲ㈶㐰ㄹ㘱〲搴ㄱ㈶㐰ち㘹〰㌹愴〱戴㡦〶搰㍦ㅡ搰晦㠳㈶㐷〲〴㡦扥〲㜵愳〱ㄴ㡥〶㤰㌳ㅡ㐰搲㘸〰晤愲〱㌴㡣〶㄰㉣ㅡ㐰戴㘸〰㠵愲〱㔴㡡〶㤰㈴ㅡ㐰㤶㘸〰つ愲〱㜴㠸〶㄰ㅤㅡ㐰㜸㘸〰㤵愱〱㤴㠶〶㤰ㄵㅡ㐰㕡㘸〰ㅤ愱〱戴㠴〶㄰づㅡ㐰㍣㘸〰愵愰〱搴㠲〶㤰〶ㅡ㐰ㅥ㘸〰㉤愰〱昴㠰〶㘸㝥ㅡ㐰〰㘸㠰㙥愷〱㍡㥥〶㘸㙦ㅡ愰挵㘹㠰㝥愶〱㝡㥡〶㘸㘰ㅡ愰㠹㘹㠰㡥愵〱扡㤶〶㘸㔱ㅡ愰㑤㘹㠰㥥愴〱晡㤲〶㘸㐲ㅡ愰ㄱ㘹㠰慥愳〱㍡㡦〶㘸㌳ㅡ愰搵㘸㠰扥愲〱㝡ぢ收昹㕦ㄵ㑦扥挳 | C27: 㜸〱敤㕣㜹㝣搴搵戵㥦㍢㤹昹㘵敥㤰㤰㘱搱㉡㙥戱㐲ㄵ㠳㌱〹㈰㈰戲㠴㠴㈵戲㤳〰㕡戵㘱㤲昹つㄹ㤸〵㘶㈶㐰摣㜰挷晡戴㉡摡慡㙤㕤㙢搵㕡㉢ㄶ愹㜵慢慤慦敥㑢㕢慤戵摢㙢㜱敢慡㝤戵㥦㍥摦戳摡摡昷晤㥥摦敦㌷昳㥢㉤㈰㠵捦攳㡦昷㠳㥣㌹昷㥣㜳敦敦摣㜳敥㍤㜷㥤昱㈸㡦挷昳㑦㍣晣攴攳㈳㜲㘸攷㐰㈶㙢㈶ㅡ摢㔲昱戸搹㥢㡤愵㤲㤹挶搶㜴㍡㍣戰㈰㤶挹㔶㐱挰攸㡥㠱㥦昱㜷㘷㘲㘷㥡㠱敥つ㘶㍡〳㈱扦挷ㄳ〸㘸㉦昸摡晥ぢ攵ㄲ捣愵㝤〴㤰昲㘸㠳愰㥡㈰㐰㈰昲㐱㘲㐳〰㙡㙡〰扡摡㘶㉤敥㔹㠳户㜷㘶㔳㘹㜳㕣晤ち敢ㅤ搳㥡㥢ㅢ㥢ㅢ挷㑦ㄸ㝦㐲㘳搳戸晡戶晥㜸戶㍦㙤㑥㑢㥡晤搹㜴㌸㍥慥㝥㐹㝦㑦㍣搶㍢摦ㅣ攸㑡慤㌵㤳搳捣㥥愶昱㍤攱〹㤳㥢㈷㑣㥣ㄸ㥤㌲㘵㜲㑤㉤㑡㕥搴㌶㙢㐹摡㡣㘶昶㔶㤹㐳㔹收攲戶㔹㡤㡢捣散摥㉡戳づ㘵愲挸昶㔴㈲ㅣ㑢敥愵㐲晤昴挱昸㜶戳㌷㐶㘷㤹㘶㍡㤶㕣摤〸戵ぢっ㡤搴愴挶㌹戰㜸㙦㌸㤳㙤㌳攳昱㘵㘶㤴㝥慡㐹搰㘶㘶摡㑣昶㥡㤹愱㠹搹㥢㝡捤戸捤捥〴ㄲ㉢挲改㐵攱㠴改㈳㔲㤷戰晣搶ㄱ㌱㤳搹㔸㜶愰㌶戱㍣㘳㉥ぢ㈷㔷㥢ㄴ昱㈷收昶挷㈲㍥㥦昲昹㍣㔵㐷㤷㔳㐶㝣搳㌸㈷摤摢搶ㄷ㑥㘷㈵㐵慦㌵㤷㤳㜵戵㄰㔱扣㐰㉤戶愲晡愲㕣㜴㔳㘷㉣㌱摦㑣㈷捤㌸㕦㐲攷㌵ㄴ〹㠹㑤㉣搳攷㡣攳搴㠶㡥㔱㐳散晥挱慡昰㉤㍡㐴㌰っ挰ㄸづ㜰昸散㘵换敡㘳搱晡ㅥ㌳㘹㐶㘳搹㑣㝤挴㡣㠷〷捣㐸㝤㜳晤㠰ㄹ㑥敢ㄱ㤴ㅥ〹愰㝣㙦愳敢戹㑢㘳昳昷㜶㠷扤摤㍤摥敥㕥㙦㜷挴摢㙤㝡扢愳摥敥搵摥敥㍥㙦㜷捣摢扤挶摢扤ㄶ㌲捥ㄳ愸慥昶摡捦愶〷摥晦捡愶㙦㕥㌹㙦晢㡦㉦扥搳户扡昶ㄸ㍦㝢摢挴㜲㔵㉢戶㕡㙢㈶搳㥦㔸挷㙥㙥㝢㔴晡㘴愲㍤㤳㕤ㄲ㑥㈷㌲㝢搷昵㜰晣慥㝣摦㥡㐹散㝢摦攳㈵㝢挵昷挶㠱㌰昳昱㡢㔲改〴攲捦㠲㔴㕢㝦㜶㕡搳戸㜹㌱昹㙣㙣㥡㍣㙥愱ㄹ㑥㑥㙢㙡㙣㙡ㄹ搷㤹㡤戴㥢ㅢ㠸㌷敢㑦㈰㤳㍥〸挰㌸ㄸ㘰㘸㐷㌲ㅡて搳〱昵改㜰搶搴愳挸㍤〴㐰愹户搰㐰搸㐸㌲昵㍦㥤㝡捥慤摦㥣㝢搵愷㤶㕣晦搸㤸㌷㍣㡡㘱㤴ㅥ㌶づ〳㤸㔰昰晥收㠹㈷戴搸㉡㑣㘸㙡㙡戲㔴㈰戱㜱愲愳㐴㌳攸晡㜰攴搴㐷戰㡣㝡㠰㥡慥晥㤸愸搰㥢捡㘴昵㤱攴㝤ㄲ㐰愹㕦搹㉡捣晥搵戴搷㑦㍦愹慦攳㠱搳㙡㔷㍦㝣昹㐳㡢ㄴ㠳戸挴昵搱ㄴㅥ〳㘰㝣ち攰㠸㑡捤扦㐵㥡㝦㐶ㅦ㑤昱㘳〰㤴晡愹㕤戶ㅡ摥昸戹攴昳㤱挵搷晥㜴换昶捦昶昶摥愰ㄸ㜳愴散㘳㈹摣〰㘰㡣〳ㄸ戲㘴㐵晤㉣扢㕢改攳挸㙡〴㔰敡㈵扢㥣敦摤㥥摣㝥昰㐵㝦㔹㜴㝥攴捣敦㕣昶捡㉦搳㡡㑤㔹捡㘹愲㜰㌳㠰搱〲攰㥢搶摡㌲㐹㡦㈷㙤〲㠰㔲捦摢〵㐴㍥扡攱戸㍢㥥㝣㙦晥㈵㥢敦扡晦昳㌵㙤昳ㄵ㠷㈶㈹攰〴ち㑦〲㌰㈶〳ㅣ捡㑡愶㤲昱㠱晡㔸戲㌷摥㔸摦㥢㑡慣㙢㙣挶㐷㈶㥢㤹愶愷㔰昶㐴〰愵㥥戴ぢ㕥ㄲ晡㜴㥤昷戸㥢㘷㥤晦摦㌷扤㝡晥㕢㌵㍢ㄴ㠷㍢㈹昸㈴ち㑦〳㌰愶〳〴㔰挳㌶㤶愲㘷㤰㍥ㄳ㐰愹敦摡㠵㕣㔸昵捡㝢㤷㙥㕢摥㜶昹〷㡢㝦昱挸晤挷㔷㈹挶ぢ㈹㘴ㄶ㠵摢〰㡣㜶㤲ㄶ㉤㔹愱㘷㤳㌴〷㐰愹㠷散晣户慣㜸昶捡㍢㌶㙤㕢昰戵㘳敦扣收㥥㍢敦㍥愸㘶ㅥ搸㑢敤㘸搶㥥づ㙦挴㤰㤰ㅦ㙤㕡ㅡ搱㔶㜷㘷㤸挵㈸ㅢ㥤ㄸ㥤ㄴ㙤㙥㡥㑣㙣ち㡦て晢ㄹて㜷㌷戸㌳㄰搶㐴㔷挶㤲㤱搴㐶㠹昶㌵搱㌹戱㜸搶㑣㑢愲㉥㡡て㙢挴戲㠶㠲攸散㑤ㄸ敡㝢慤㠱㘱㘴戴捤㑣㘷㌱㐴㘶〷昲ㄱ攳搰㔹攱㡣㤹㑦㌶搸㘵捦㑡昵㈷㈳㤹㐳捡㌳㍢戳攸㜷愳㡡㜹昹㐲㑡戲㜵㘲昸㌴㌳愲搲攱挵搹㔶㠴攳晤㘶敢愶㤸挵㍥慣㠸㡤㠱㌴搵㔳㤹㍢㈷㙤慥捦㜱㑢㌴㙡挵㙣㙣㠳㤴㕤㔲㑢㡢㘵改㔵摦搶㤷捡㤸㐹㔱慦㈱戱㈴搶扢搶㑣㜷㥡㥣换㤹ㄱ愹敡〱㘴搹愳㜹挳攲㈴㉡㡡昱㌹昲㐹㌷㤵㠶㌶㤳ㄱ㌳〲㝤搷挱捡〳㕤攱㥥戸㜹㘰㠱㠸昵㑥㌰づ㉥㈰捦㐹昵昶㘷摡㔲挹㙣㍡ㄵ㉦攴戴㐶㌶㠴㌱㠳㠸㉣㑣㐵㑣㥦㍣ㅥぢ㉡㑦㔵㤵㔲㥥㘳捡㡤㔷㉣㍢挳挱摡搵㐸㌸㈵ㄸ㕣搸搵㠸㈸㕣㜶㤰捦㤵っ挴摤挸㈰㍦㜶㔰㑤摣㡤㤰愵㌷つ㉡㕤愶㤱㌲搳㐱㠵ㅤ慦㜱ㄹ晣〳㍦挴㑤昶㑡敦攸捡㐵收摢㈵㡢ㄹ㐴㔳㤷㔷㌸㜵愷昴㈰㐶㤳㘲㜳㙤㙦摦ち㝢扤㈳散摡捦摥㠰㜹攲扣㜰㌲ㄲ㌷搳㠳㉥㍣ㄴ㌵搲ㅤ〴㈷ㄳ捣㈷㔸㐰戰㄰挰扦ㅤ㌱慥愲㐵㌹㔲慡㑤㙡挰扦㌱ㄶ挹昶ㄹ㝤㘶㙣㜵㕦ㄶ㌴㉣㔸〲〱㥡㝢㥢晤户ㄶ搱昴㑤慥㠱昴㘲㠲㈵〴㑢〱㠲㐱㡦戱っ㥦ㅥ㈳愸㍢昹搱〵㔰攷㑣㤴敢慤㤶ㄹ昴昸㌹〹晣昸㔳㔵㔹㈶挹捣ㄸ㑢㤷㡣㍦㠱㜲㌳㔵㔵攵慣㌱㉦㥣改换戲㈳づ捡㤴㐹改㜲愸愲㔷〰搴慣〴㔸㌴捦㡣愳ㅢ敦慤㔵㡦㥦㤳搸㕤捥慥㌹ㅢ㍥㌰搱㌹㤰散敤㑢愷㤲㔸㉢戶㠷戳攱搶㕥㉣㈱㌲㉡㙣㈴㘴扡㘴㈴㘴戶㔴㤳㔸㘶慥㌳挳搹㌶㠴改㙣㙤㘲〱㤶ㅦㄲ㐷㍢㈲㥢晣〹㙢攵搰㙥㘶㝡㌵㤷ㄸㅤ〸㑢㥢っ㘰㠸戳㌵〹〶ㅡ㜳㔳㤶㐵㔷㈷㌰㘳㐵㜳搲㄰㙡㤰㕣ㄶ挶㥣戵㐲㜳㜲〷敤ㄴ㑡〸〹敡㉡㘵㠸㄰慣㤲㘴㡥㠵ㄱㄴ㘳慡捦㠶挵㍤㘸㜹㌶ㄶ捦㌴摡收㙤㙣㑦㘱〹㙡捡㙡㤹㘶㌷っ㌴㌰㘳㔰㘷ㄵ㜷㜴慥㔱ㄶ昷昶㔸挵㐲㤵戹改㔴晦㍡捥㔵昷㔶㌹㉣换愳㑦〱戸昹㉦㜷㑦ㅤ㜳攳戶㝦摡㥦㥢搱㠵攴搱㜴㥣㘶㝢㘷ㄲㅦ昲攸搳昰ㄱㅣ㡣攷攷㘰㕥㌶搲㔶㔸㑥㜱ㄶ㕢㤳㐰㙤扢搲愶慣て〳㤲ㄸ㔸㘷搶㈶㔶愶搲㙢㝢㔲愹戵㜴晥㔰㐹㘵晡㑣㌳换㐵搷㄰㝢㡤㐹㕣㈹㔵㔵㔵戰㠶㜲慤捥戸㕣㌳扡〱㙡㕢攳昱㝡愷挴㡣戱ち愴㉡㡣㈸㐶ㄸ挸搱㜳捤㔴㝡㜵㉣摣摤戵㘲㜶搷摣㜴㌸㤹㥤ㄳ敥㡤挵戱㜶敤挶㥣㈸㥡摤搰㍣愱㜱㔳㍣戳㐹摤〴㘳㜰㌲摥戸昳㌷㘳㘷㘷愶捦扡敦㘵晤㕦㤱摢攷摦愷㙥戴ㄹ㈵㙢㌰捥昳〷㤹〸ㄵ慣㜴㌸㘹㉡㤸〸㤵っ昱㔶㤴昹晦㠹捣㝥㌷㤱㈹㥣挴ㅣ扢㡢㤱扢㘸ㅡ㔳㜱搰晡晦㘹㐰戹晤㐷㙢ㅡ㄰㐱㘷㔱㕦㐲户攳戰て扣昰搱㔱愴昵㙡㠲㍥〰っ摥ㄲ捣㌰㜶慦戱㤲㡡㙢㙦㡥搵㝡㉤㐱ㅣ挰捦㔵昷攰㈳ㅡ扡㉢〳㡡㡦㕢㈳戵㠹㜶㌳ㅡ挶晥愳㡣㐲㉡晣㝦㌹㐸昹戰㙤敢ㅡ愱〶慦〴㜴攷〰㘰ㄴ㑦ㅢぢ户挶戰㘱ㄷ㤹㙢㈶扢㄰㠹㌳㝢㜳散搹㥢㘳㤸㑥愰ㅥ捥攳摦㡡㠶戰晢㜵攲ㄴ慦㝡〳㈷㄰摤摤㥥〰㙢㐸㡡收㙥㑣改戸户ㅥ搴攰㘰㍣挵捤ㅡ㡥㝤㥡㘳㡤戱〱愰ち㡤㐵㜳㜴㔱㤷摡㠳㐳挹愸戱挵㘶㤴散敤㜰㘳㠶㈳㠷㍥㤳昹㉦㠶㔸昹㔶㝥㌶㘵捥㈱㌸ㄷ挰搵捡捦戳㤲敡〸㝣㑡㉢㍦ㅦ㠸扥〰㐰ㅤ〹㈰晢㑢ㄷ〲㜱ㅥ㜵㌶摥㐱〳㡡ㄱ敡㐱㉥㌵挲ㄶ㔰㠳㝡㄰㥥攲㜶㔱捥〸㥡㐶戰っ㤰戶敢㔹㘲㠰昵㌶愳㘴㘷㠹ㅢ㑡ㅣづ昵㔵〴㔷ㄳ㙣㈵戸㠶攰㕡〰戵ㄶ㔹㘹㤴晢㤰愰昱昳昳昶㉦㔰收㍡㠲敢〱㕣㐶昹㈲㘹㕤愴㜹ㄴ㌷慢挴㌰㕦㈶昱㐶〰挵㕤㈹㑥㙡㍤晡㈶㠰㡡㌳㈳敥㜰㤵ㅡ攷㔶㔰㠳㝡㄰㥥㍡〶ㄲ㜹攳慣㘲㈹㘱〰㜵㑡㈵攳慣戴ㄹ㈵㕢㘳摣ㄱㄳ攳摣捤㐲扥㑥㜰て挱㌷〸敥〵㔰㑢㙤攳㍣㠰挴搷攱搲ㅤ戹㐵つ捤愵扦㐹戰ㅤ挰㘵㥣ㅤ㐸ㅡ摦〲㈸㔹搳㈸搵〰戲ㄸ㡢攵改㙦〳愸攳〰㉣㘳㍤〸慣愲戱挶㌱㐳挹㌴昲ㄱ㔰㠳㝡㄰㥥㙡㠴㐴㌹㘳㑤慦㘴慣㘹㌶愳㘴晦慦〹㈵㠹戱㥥愰㉡㑦ㄲ㍣㐵昰㌴挱㌳〰㙡㤲㙤慣㌶ㄸ㡡晣㙤㌰搶㐷挰㍤晡㌹㠲攷〹㕥〰㜰ㄹ敢〷㐸ㅡ㍦〴㈸㘳慣㘶㤰挵㔸㍦〲愲㕦〲㔰攳〱㉣㘳扤っ慣愲戱㕡㤸愱挴㔸㍦〱㌵愸〷攱愹〹㤰㈸㘷慣搱㤵㡣㜵㤴捤㈸搹敢㍣〱㈵㠹戱㝥㑤㔵㜶ㄲ扣㐶昰㍡挱ㅢ〰敡㌰摢㔸㤷挲㐰〱㄰ㅥ㠵戱㝣戲㝡㝤㡢㌲扦㈱昸㉤㠰换㔸扦㈷㡤挶ち㉡㌵〹ㅦ㘲㥣㍦㤲昸㌶㠰攲㔶愹㘵㥣㜷㠰㔵㌴捥㘴㘶㈸㌱捥㥦㐱つ敡㐱㜸敡㐴㐸㤴㌳㑥戰㤲㜱戴捤㈸搹慦攵㌶慤ㄸ攷㝤慡昲㌷㠲て〸㍥㈴昸㍢㠰慡戲㡤昳㌰ㄲ〷攱㉦摦敤㍥愲っ愷㈹㥡挳㡣换㌸㕥㈴㌵扢ㅤ㡣挳㉤㘰㌱づ捦㘰戵ㅦ㐰捤〰挹㌲㡥㠱㘴㐵攳㑣㘷挹㈵挶搱挸ㄲ搴㠳昰搴㑣攴㉢㘷㥣㜷㍦慡戰捥昹戳捤㈸搹㠷㥥㠵㤲挴㌸挳愹晢〸㠲㤱〴〷㄰ㅣ〸愰晥㠰慣っ搸户㈱㜱ㅥ愴搹捤㜶〲挷㌱〸㘵づ㈶ㄸ〵攰㌲捥愱㐸ㅡ㠷〱昸敢戹㉢〵ㄳ戵㐱㕥㑣㜴㌸挵㡦〰㔰戳㐱戲㑣㔴㡦㘴㐵ㄳ戵昳㑤㈵㈶㍡ち㔹㠲㝡㄰㥥㥡㠳㝣攵㑣昴㙡㈵ㄳ晤挴㘶ㄴ㙦戵晢戹㜱㔵扣㜵㈰㈷㡤戹㑤㐸搷扡㘰㈸㠴㡤攸昲㈴㑥て㠷㐴㕢晢戳愹㌹戱㉣㈶㙥㌵㔱〰愰㤲㘵㤴散搷戹㌲㌵㐴㔷挴捣㡤㥣戲ㅤ㔱捡挲㈱㙣㕢㝦㈶㥢㤲㕤㤱挳㑢昹敤愹㐵愹㙣㝢㉣戳づ㐷㤵愳换戰㉤捥捡㍥㌳㠹つ攴㌴昶㤱㜷㈵㤴㕡户捥㡣㤴搱戱㌳搵㥦敥㌵㍢摡昷㠷㉤㘸㘵㙤敦愰敢㜲昳㔹㡤愹扣㜰㜳搹扤ㄶ扥昱㘲搷㐱敤搹づ愶㌱㡥捤㜶㡣㐷ㅦ㠷㑦㠴〳㠵㈶慦ㅢ搹㄰戱㝤㜸昲㉥ㅢ㠹㙢㕢㝢〸㠴㠳㔱㌸搶愲搵摡攷㈶ㅤ挹㑣㉣㘲〶敤搴挲㔸㜲愸㡤㉥敥捦ㄶ㜰挲㥢㐶搸ㅣ㙣㡥㉣㑥挲昹扤攱㜴㘴㝦昰ぢ㉡㠶挷㜲㡡㌲昰㙦捦㑣㙤ㄵ攳昱扣敢㕣㙦㜹㜷㌳扡晢昱戶慤攷㠳㕤㜶慦㉡搷㈱㠱戸㑥〵戸昴慢愵戹㜳攴〰㔳㍣攰ㄵ㉦㔸攷扢㐳㐵挲㐴ㄳ挷敤㠷戸㌹愲㌰㈹㡢㐵ㅤ㙤敤挹愴攲晤㔹㜳㘸づ㤳慥慥愳换㜰㔳㠰㈷㍣㌵㌹㙣㐹㙦ㄶ㘷㘰戹昲㜸㝡戳晦㜸〸ㄶ昱搹㕥㔲攲㈷㘳㤰〸㔷㔸〹昶愲㍤昴㉡晣ㄷ㤵攷㍦㘷愸㉦摥挰攷㙢㌳㍣づㄲ攴攳昱㉦㐰昱挵慢挱挲㘸敢㍥挲㘱㑦ㅡ攱㥣㉣㕡㌱㑥挲㔷㡤㐳㤳搳㤳愸㐴㍥ㅣ㤱昲㥡㐴ㅤ扢㑥ㅣ户㤲戲戱摥㜰㍣㍥㌰㌴摡㠱㠳攰晥㠸戹㈰摣㘳挶㥤愸捤㙢〱晢㠷扦攴㘲㤷攵慢㐱散㘲ㅢ愵〳户扢㥣〳愳㍤づ㜴ㅥ摤〴㑦挹愰㡢㌲㌰㠷戵晢摤㐲ㄸ晢㘳㥦㤷〵㤱㘹㜸晥戴㔷敥ㄳ㈱戴㤵㤰ㄸ搳㜸㜶㤰㍢㜲㤳ㅥ攷ㄲ㕢㤰㕡㤰挲㜱㘸挴㐵㥡ㄷ戳㐸晢㑤扦ㄲ㌷ㄹ㠶戱愷㐳捣㙣㑦攳㔹敢ㅦ戹㜳挶㝢㡦㐶㐳ぢ㡥㝤㝡㠶搳㕢㌸挶戰㜳㉣㠶㌱㡢㑦ㅤ㕣㥤㐳㐶㝦〹㠲㥣搲搵㌱㠲㔹㔳㠷慥㔸㌶㙥づ㠹ち㕦昰〰扢〴慤㔹ㅤ敤敡挳づ㝥㝢㙤㜴㙥㍡ㄶ㠹挷㤲㈶愷㈱㌸㥥攷ㅤ慥〵收㙡ㅣ㈴㉦㐹㘵攴㝥㐹㙤戴ぢ㕢散㤹㜵㍣愸改ㅤㄸ㕥㤰ㄲ㘷昹愳戳㘲㐹㜴㈰敢㥤挴敢愲㥤㝤愹㡤戸㡤搸㥦㐸捥つ慦换散ㄷ㡥㐲㙢戶ㅦ慢㔷㜹㤵搷慢〲摥挰㥥㡥㔵㜲慥挲〹㠱㠷㡢㍤㉦㠱敤慥㈵挰〶改戳昴㤴㝤㤴捦㍥㑢扤ち慥㙣㤵㍤㐷捣㕤攷㘴ㅣ搶ㄳ㤰愹㘶㈲挰挹㜳㤷㜷攴㉦㠰晣㑢㜷㉤晤㑢㔱昲㈰挳㠱㌴㡤摣㘹昳〱㄰ㅥ㙡㌵ㄷ搲搸㝡戴㜸㥤愹攲㈶ㄸ㡣㡡っ㕢㈳㐶㔰㡡ㄳ㥤㠳㜳挰ㅡ㜴㝥㠴㕦㥣㥦㈲敥づ戵ㄲ㥣搴攱㜲㔶挶收戵愵ㄲ㠹㌰㥢ㄷ㥢㘶㈷㘲户ㄹ㤰ㄹ㌶愲㠹㡥〲㐸ㅢ戴㐹攱㑤㈰㠵㌷〹〹㐳㌲㙦㤰〸捥戲㔲慢挳改㔸戶㉦ㄱ敢つ㌰挱㕢ㅥ晢㐵扢㐴ㄳ昲挱㤸捥㈳㡤ㄳ搳搵攲㑤㘱敢㜸ㄱ敥㙥挴ち㠲愶愳晢搱㝡扤㌲㡥慢㍤㍣㥥㐷昳搵㥣摦敡㐹〰㝥㙥っ㈰昴㕢慡戸㈶㘱愰㐸㈰㔲㥤ㄴ挰㥦㥥っ㐸㠴㝦扥攵〰㠳㥥㤸㔶㐳㈰戸㈰ㄵ㡥攰㥣づ户㠳慢敤扢挱〱戸㤶㘱㈵ㅤ攲㈹㜹ㅢ慥㤸攰敡捡〶捣㠵搳〱ㄲ㍡㜱晥散攳昹扡㘱昹㤰ㄳ㑣㡦摦㍦㈴㔰敥㕤ㅤ㑥㔹愳敤搳㐴昷㕤攸㡥㤲昲摦㔹㍡㤹㙢㜵㔴ぢ换㕡㡦㥥㠲㝡攸ㄳ㔹愷ㄵ㐸戲㍥㐵〲㔳㈹㜰ㄲ㠰晦ㄴ㌰㡢㝢㐹挵ㄳ㘵ㄶ敥㑦昰愴㍢㤰㘰㜵㌰攵㌰㜰晥㡤ㄳ㜳㤸挴ㄸㄲ㔸〹扥㥥㠶㘲㕦㝣攱〵㙥㈷㜸搴㘹〰捥晢㙢㠰〷㠳㌴㥥㥥捥昷捦攰晢㈳㐸㝥㡣〳㉢捥㤴㜴㙥㥤㈹㤳摤晣戲戲㌶敡㕥㐵㡥㠸摡换㐹搷愲戱㠸㈶㤳㉣昴昳晤㘸㐹㠸晡挱㙣㑥慦搹搳ㄱ㔸㥡㍤摢㌸昶㥡愳㈸㤰㈳慥挷㤸〹㠳㡦戰慥㙡搶挳㌶搹㜴慣愷㥦㔷㉥挹㤴愸敦换㐷㝤戵ㅡ㌴㐶㝥摤㡡㕣慡てㄸ〳㉡ち㤶ㄹ㤵收㜶攵慥㍢搸ㅡ收挰㥦㙥㘷㈱㜶㐲慤〵攲㌴ち愰㘸ㄴ攲搶搹㄰搰㜳㈸ㄸ㉦㉦㌰㤷〲昳〰晣〹〸ㄴ㐷㤴挲〳㈴㉣㤸㜹㜵搲㈷昷挲㜹晦㈲㠰慢っ㜲㜱挳㉦摤㙦㠸敢挲㠵㘱摤戵〸㈰て戰㐴挶攸㐴㙣㌶㈳㐱慢㘵戱戹㌳㠸㜸扤㍥〴㈸愳昸㌸扤攴戵㉣愲搳㤴㐳㉥㈵晢㈸ㅤ挸㝣㈰㌷㔱㔰㝥㜷搱㔵摢攲㉤㈱慣挵攷㐳ㅣ晢㜱敢㕤㌶攰㙥㥥㙤愴〵攰敡㠵〰敡㑣㄰搹㝢摣扥收㠹㡣攵敢㐵㄰搹㙤㕦昳っ㐷㝣扤㤸〵㥦㡢㔴㠱慦㤷㠲扡㙢㕦㥦㠷㙣㄰挴㡣㥢㠵搸〹㜵㍥㤰㌲扥敥㠴㠰敥愲攰〵攵〵㤶㔳㘰〵〵㉥㠴〰晤㙤慣㐴㙡愴㘳挷㠲摢挲㘵慣㜸㉡㠴㘱挵㉤慥搲㐷㤱㘲㌵戵㑦戳昴搳㔸晡㔵㈰㜲㙢捣㌸㥤㈹㙣㡢㥣挱㡣昶戶挸㘷㠰戳ぢ㕤つㄲ户㐶㥣挷㌵㤶㘰㐱摦㙤㑢㙤〵㝢㍥㐵㤰㜶愶扣㤵ㄶ㠸敡ㅡ挸㜱㤱攸搱慢㈰㥥㕦愵昴搸㠵㕤ぢㄶ㔷㉡㉢㔶摥搵㌹收搹慦捥㌸敢愸挹㘷㔷昷㍤㔹㍣㤷㔶㕦㠰㡣㜸㕣㑥㝦攴摤散挴慥昹㥢攲㘱㤴㜸㌷㠲戲搵昵㐸㔹摥昵㘸搶㔹㐷〱㜶敤摤㉦㈲ㅢ〴㜱慡捤㐲散㠴攲昱㔵愱㜷㘵晣改㠳㠰㡥㔱㤰㐷㕢㘵〴搶㔰㘰㉤〵㙥㠲〰挷㈰ㅤ㐷㉡㌷㙣摣敡捡挶ㄹ愲㍤㙣㈴㤸㉤挹㙣㜷㠳㈸㙥㑢㌱㌵摡愳搷攱ㄳ㝡挹㙥搶㝡攰㜴摢搷㐱慡散戶戴㉤㜵て愴㜶摢㙤摦㠰戰攵戶っ戲攷摤搶㙦ㄷ㜶㉦昸㜴㥢昵扣换㍤㜷㍣搸昷戱㍥㌱㐸㕢㐱昹㍥愴㉤户㡤ㄳづ戲ㄷ扢敤㥢㘰㠸摢㌶㠲愹戶㈳攵戸㡤㜵搶〳〰扢㜶摢づ㘴㠳㈰㡥㜲㔹㠸㥤㔰㍣㐸㉢攳㤵戳㈰愰捦愶㈰て搹捡〸㥣㐳㠱㜳㈹昰㈰〴挴㙤㥢㤱捡戹㡤㈷㙢㑥㌶㍦㜰摢㙤攷㌱摢昹捣昶〴㠸攲戶ぢ㤸㐲㙦扢㄰㥦搰㑢摣㜶ㄱ㜰扡㡤愷㘰㤵摤㜶戱㉤挵㘳戴摤㜶摢搳㄰戶摣㜶〹戲攷摤挶㜳㈴扥㤲㈷㜱㜴摢搲昵㜳㥦㌹㉤㝢捦㡣戱㕢捥晦攲㔹㠱攷㑢㝡摢㜳㤰戱攲敢㘷㤱㜳慣㝣搳愰攴晥㝤晤扡㜸㝦愶㝥㜴换㐲摣捤攷挵晣挶ㄶ捣㠵㈰㕥散攰攷㔱㤸㌸昸㌲㌰搵ぢ㝣㍤晥㈰愹㘹ㅤ㝤㌹挰慥ㅤ晣〳挹〱昱㉢㔸㠸㥤㔰㍦〲攲㌸㠲㐴㍢散㝤づ戸扥㤲㠲㉦㤵ㄷ戸㡡〲㔷㔳攰㘵〸㠸㠳户㈲㤵㜳昰㑦㕣搹㜸㤸㘶㤷㝢つ戳㕤换㙣扦〶㔱ㅣ晣㜹愶攰攰㉦攰ㄳ㝡㠹㠳慦〳㑥㙢敦〴愹戲㠳慦户愵㕥㠳搴㙥㍢昸㜵〸㕢づ扥〱搹昳づ晥㤲㕤搸ㅢ攰搳挱㥦ぢ㕦昶敦〷〴敥㥤昱收愱㔳晢㑦㝥慡搴挱㙦㐱挶敡㤷㤳㠱㔱昳ㄲ户昱㤰㔱摣㜶㈳㤸㡡愷㡤㡥摢㔸㘷㝤㌳挰慥摤挶㔳㐹〸㝡昴㉤㉣挴㑥愸㍦〲㜱摣〶搴㌱敦慤㄰搰㍣戸㔲㙦㤷ㄷ昸ち〵㙥愷挰㍢㄰㄰户㝤ㄵ愹㥣摢晥散捡挶挳㉡摢㙤㜷㌰摢㥤捣昶㍥㠸攲戶扢㤸㐲㌸晤ㅡ㍥愱㤷戸敤㙥攰㜴ㅢ捦ㅣ㉢扢㡤〷晤㤴晡〰㔲扢敤㌶ㅥ㕥㕡㙥扢〷搹昳㙥扢搷㉥㡣攷㥡扢ㄳ㑥㍦㠲㥣攵戶改挰愸㜹㠹摢ㄸ㡡挵㙤昷㠱挹㥡攵摣挶㍡敢敤〰扢㜶㥢㔷昲㐲晣㝥ㅢ挱〷搶扢㠰㠵㙥㤳㔱㜰〷挸晡㕢ㄴ昴㤷ㄷ㜸㠰〲摦愶㠰〱㈰㙥㝢㄰㐸捥㙤ㅡ〹愷㕣㔷㌸㝤〸㘴晤㌰㠰ㅡづ㈰㙥㝢㠴㈹戸敤㔱㝣㑡攵㌰㡦晣づ㜰㍡㘴〴㍥㉢扢敤㌱㕢㙡㈴㍥㜷摢㙤〷㐰搸㜲摢㜷㠱攵摤昶戸㕤ㄸ㑦㕣改戶て㥦㌸攵慣慥戳搶㍦晥敡㘵敦搵晦㘹昵㌵慤捥慣㠸㡡㔱㌵ㅥ扤㕡㙥㙢㠷㌴㌵㉦㜱摢挱愰㠹摢扥て㐴㡤〲㜰㝡ㅢ敢慣㥦〴搸戵摢づ㘵㕥㤴慦㥦戲ㄱ㈶搴攱㠰㡥㜹昹㜶扢㔷㍣つ戲㝥㠶㠲㐷㤴ㄷ㜸㤶〲捦㔱愰ㅥ㐰摣昶㍣㤰㥣摢㡥㐲挲㈹㜷㙡扥摣ㄷ㐰搶㉦〲昸㡦〳搸扤戳㍥㉥㤶㐳慥〳㔸戹て㌷㉣扡戴㍦捣敢挱㡢㜱〶㤰㈵㘹㝦搸昸昱㔹㈷㌱扢㕣ㅥ㐹ㄵ㑥㍢㠳㉢愳㘲ㅢㄴ㉥愵散扡挹昵扦㍤㍢愹〹晡㕢㜰ㅡ扥㝢㙦㠱㑢㡡㉥攴戱て〷昵て挱㘰㔳㙤挴㈷㘵昴㡦〰戹戱㈴㥢㑢挷㍢搴㤷挸戳ㅦ㝦ㄳㄲ㠳㙣㤸ㄶㅤ㜲㌰攷㠸晣昶づ㌷昲ㅡ攲晣愲㝢戹㝤愱挲㝤搳㤷昹晡ㄶ〲㤴愱摤㍡愸〹づ昵ㄵㅢ㘱㜵晣㤳㤰㈸㕥㌷㤷散挴昹㈰㠹攳㕢散挹㜵㘶〷攲搸〷㈵捡㜵戴㠵㜱攳挷㘲㐳改㔴ㅡ挱捦㔷㝣㠵㌸㤷㜷ㅥ㡡ㅡ㌲戲攸㝢㐶㤲㡤㥣㠹搰挶摦〰ㄷ㔵捣て〱㤷㔷㤸㠷㡦昱㉡攸㈳ㄷ挶㝡搳愹㑣㉡㥡慤敦挴㝥㝥㍤扦㜹㠶慤㡥愶㔶晦㔸㤴㔸昶㥤慣㤸㉦挹㙦㠱㙦攰捤换攰摡㘴㙡㘳㔲戴昱㘷昸〵㍣扥㑤㔷㔷昳㌵㐱晣挹㜳ㄴ㙣ㅢ攲昶㈰㌳敢㥦〱愹慤ち㑤愱㈴㥥搰㠹づ㌲搵㐱㑥戲㤱扡㘹㐰㔸㡡㈱㤲㝢ㄱ㠴愶愳㘴㝡搳昸㌹㤰愱㙤戳扡㕤㍢昰挶㉦㐰慢〱㑤㌶㌹㤶攱㡢㙢挶㉦㐱ㄹ〶㑡攱搷攲㐳㌳散㔲昲㕦ㅥ搷扦〶㐹戵ㄲ愰㜴扤搳㐶昸㉡搵㠶〴ㅢ㡦慡㠷㜱改㌲㄰㍤挶敢愰㔴昴㠳㍡ㅣ㘲昴㐵愱㉤摢㤱㐷㙣昹㈶㄰搸㜲㌶㍥昸㠴收㌸〸户㜹㠴㌲捦㐶晣摣ㄲ搹㘵㘰戱昷㕤㔸戶敡㔱扤㉡愲㑣㕦㜵㜵挹愵㡡挲㈰㠳㉤ㄹ〹㐸戲㔱㘳㄰晡て㠵捡㠳挷っ㈷ㄳ搵㉢扣挴㑢㕢改摦㠰慥㝦ぢ㄰っ㉤〰愴㐲挶敦㠰㤴㍡挱昸㍤挸挳攱ㅢ㕣搶㜵扥ㅣ挲㡥㘶晣〱昴㐲㉦晥ㄱ㤴㈲㕦㠷ㄶ㠲㈶愶㝣ㅢ㠸づ昳摤〷ㄱ㝣〲㐰㉤〶つ晦㍤晡捦㌶㈲㝥㕣㡡㠴昸㌱㠴㕡收晣昸ㄷ㔰㉢晢㜱㘸㔹㍦㉥㐳ㅥ㜹昹㕦㠱挰㡦㥤昸攰ㄳ敡㜲㤰攵づ戲挲㐶搴愹㐰攸㑢㔵㠳㈲㘹㘷戱搷㝢愰攸晦〶〸㠶㍥つ㈸昶晡ㅦ㈰愵昶搲戴㤷昱㌷㠰㐲攳㝣〰㑡戱㜱㑥〳㑤昴晢㄰㠸㘵㥣㈳愰㥥㝣敢㕣㥤〱ㅡ㐷㘱摣改㠲ㄶㅣ㈵愸㐹㔰㌳慡㌳摡㝦〶㍣晣昷㘸〵㐲㉥摡㜷㍢搴㠲㐸扢ち㔴㐶㝣㕤〵㐱戴㍣㍢㘷㠱㑣挴愱㜲慥〲㕣晡慦㡡〲ㄳ㘷㝣昰㡦扣㌳㌴㠳ㅢ攳㤸㝡ㅦ搴搲晥戳ㅡ㙣愹ㄷ㝦改〴㜶敦ㄳ㜱搸㍤收㈰㙢ㅣ㘴慤㡤搴挵㠱散㥢㔸㤴㐰挹攲㐴挶㈲捤攰愳ㄹ㙦㐲摣愴ㄱ晡㘸㕡㜱っ㐱ㅤ慢扥づ㜴换昰敦愲㜶㜹挳て〳㤳㠶㕦て㍥晥㝢昴㜰㄰昰摦ㅡ㘶搳づ㜵〴㐹昶愳㌲愰㡡攱㐷㠲慡晡换捡㙣㜴愸〷㔲〶㌹愹㤴ㅡ〰㈶㠶晦㠳换昰挶㐱㄰愹摣ぢ㝥㔷搶ㅢ㘷愲㈴昱挶㈸㘴㠶㌷捥攲㍢昰㠴戸㡤㈲挸㌹づ㜲慥㡤搴㙤〶戲㙦扣㜱ㅥ㑡㘶〵㡤㐳愰㑤㔱㠷㌰づ〵慤戰摢ㅣ〶㑡㘹㈷ぢ㥤㙦㤷愲㡦㐵㔱昲摢〷扡ㅥ㤲敡㐲搰㉤摦敤㉣昰摤㈷挱愴敦㉥〲ㅦ晦㍤晡㈸㄰愸㠶搸晡㘲㠷㍡ㅡ㔴攷㔱㤷㠰㉡扥ㅢ挳㤲㉦㉤㉢㜳㤹㐳㍤㥡㌲挸㑡㐳慢换㠱㠹敦㝥收昶摤㔸㠸㔴昶摤慢㘵㝤㜷〵㑡ㄲ摦㌵㈰㌳㝣挷摤ㄱ扥挶ㄸ㠷昴㤸戶㔹㙤换扡㝢㥡㈷㑥㘸挲㠹㙥㉦㝥挲㘷㐲换昸收挹㤳㑦㤸搲搳搳㌲愵㈹㍡㘹㜲㑦愴㘷㜲攸㑡㍢㡦㍥づ㜹㐲㔷㌹愹㐶愶慥㜶㔲攴搵㙤㐵㙡摦㜸晤ㅡ㤴㉣㕥㙦挲㝢㑡晤㘹㌴㠳㕣攸昸ㄶ㔰㡡㥡㐷攸㕡扢ㄴ㍤ㅥ㑣昹愵ち摤㐴㝢㝦〱㜴换敢捦ㄵ㜸㝤ㄲ挴攸昵敢挰挷㝦㥣愱㠲㠰晦㔶㡦扤摥愱㑥㈱挹㝥搴つ愰㡡搷㑦〴㔵㝤愹慣捣㡤づ昵㈴捡㈰愷戴愲㥢㠱㠹搷扦敦昶晡㜴㠸㔴昶晡攳㘵扤㝥ぢ㑡ㄲ慦捦㐴㘶㜸晤㔶扥〳㑦㠸ㅢ㉣㠲㝣挵㐱㙥户㤱扡慦〲搹㌷扥扢〳㈵戳㠲㥡ㄳ〴捤㘱㕦晦ㄱ㈰㜴愷㐳㙦㠷㤶昲戳ㅦ㥡户攳搵搷㐰户扣昱㔰㠱㌷收㐱㡣摥戸ㅢ㝣晣挷昷搴㐱挰㝦换ㅢ㕦㜷愸〵昱昳ㅥ㔰挵ㅢ昳㈱愸戸攵㈲㌹ぢ㘴敥㜳愸ぢ㈹㠳昲挴ㅢ摢㠱㠹㌷戶扢扣愱ㄹ㍦㔱㘲慢扡慦慣攱敦㐷㈶㌱晣㔲挸挱昰㍢㔸ㅣ㥥搰户ㅣ攴〱〷昹戶㡤搴㍤〸㘴摦ㄸ晥㈱㤴㉣㠶㘷愸搴㡣㡤㥡攱㌰昴戰㐳㍦〹慡挹捦愲攸㤵愰㉢敥慣㔸㠶扦慢挰昰愷㠲㐹挳㝦〷㝣晣昷攸㑦㠳挰㠲挵㔰㡦㌹搴㠲攰昷㕤㔰挵昰愷戳攴挷换捡㝣摦愱㝥㠶㌲㈸㑦㠲摦㤳挰挴昰户扡つ捦攰㈷㠶扦戹慣攱㥦㐲㈶㌱㝣て攴㘰昸愷㔹ㅣ㥥搰㌳づ昲慣㠳㍣㘷㈳㜵捦〳搹㌷㠶㝦〱㈵㡢攱ㄹ慤㌴㘳㤳㘶㌸ち扤攸搰愳㈴戵㐱㍦㍤ぢ㐰晤㄰㜴晣挷㜹ㄲ攸㡥㘱㐳㍦〲㐹敡戴㠶搲㙢〱㙡扤㈱㘷捡愵㕥㜶昲攴㈸慣㉥㔷挲㤲㈷㐱昱㉡㍦ㄷ㜳㔳㉢㕦戹㜶慤慡ㅡ戰㘴㉦昸㉤㤲搹昸㙤㤱〱㤴攲愹挲㠵づ敢㐰搹攷㍤㜱捦捡攲晡愳ㄶ㐵昱捦扦ㄵㅥ晣ㄷ捡㐱㡤㕣㉢ㄲ㤶㈸㜳摥ㄴ㔴㔵㕣摤㤵晢㉡挱ㄵ㜸㘵搹㙦㤵㕦㙥㌳㡡扦㔵ㅥ摡改ㄸ戲㕦っ愹戸㤲愳㌱搵㘵挸挱ㅡ挸㑢㌷㠲㔹挷戵㄰户㉥㡢㔶挱敦捥〰㡤捦㑣㠱㥥㠰晤ㄹ㥡㔹昷㕢㈷挷ㄹ敡挸慤慤晥搷㌶㕢ㄲㅥ捦㔹㈳敦㥤晢晡㤹㍢㘶㔸㥦搷摡㥦ㄷ捤㔰㙦㈳㐷扥㘲ㅢ㈰慦挳〰敡攲㑡ㄵ扢挸㘶ㄴ㝦昱㌱挴愵㤲戴㤰㜳慣㡡晤ㄵ㘹愹搸〵敥㡡㙤㘶挵戸㘸昹㜸ㄵ攳ち㐷㜲ㄴ㔴慣敦㝡慢敡㌳户㔹㥦㙢㥣昴㤵㌳ㄵ㔷㉥攵㉡㜶㑥愵㡡㥤㙤㌳㑡扥搰挸㘱〰㠵㜹昴挵㐰㜲㥤㠸㡢ㅢ愹敥㈵㐰昴ㄶ㠰㕡慦㤲㔵っ㐵ぢ晡づ搷㉤㈲晡㔹㑡㔵㈹㡤て戱捣〶户㘵晥つ㔴挵㜹㝥㕥敢㔵㉣㉡っ愰搶㔷搲㝡㥤捤㈸昹愶㈱ㄷ〵愲昵搵㐰㜲㕡㜳㘵㈰慡㙣〵愲慦〱㐰搷㜷〶㉤㈵㙢〱扥㌳㐷㐱㈲挴搹扦攴昹㍣挵慢ㄴ㘷敢愲晥ㅡ户晡搷㠱慡敡〱捡愹㙦㔶㔲㍦㘲㌳㑡扥晢挷㜹戱愸㝦㈳㤰㥣晡㥣ㅣ㡢㉡㌷〱搱㌷ㄳ摣〲㄰っ㌹㐳㠴㤲㈹㌱慢攰㔰㤸㌷挴㐹戰攴扢つ〸慡搰㠰て愹挲ㄹ敥㉡摣づ慡㥦昳捤戲㌷㥣㡢㝦㜹捦晤㝢㠵散愱〷㈴㍡㌲搸㌳挲捦戴㜴愵㕡攵㡥㌳㜷㈳㠶㌹㝢㐹つ捥㑦挴㡣挹㔳㥣慦ㄲ㌸搹ㄶ愷㜳昹昰㡢㈷搸㘵〳愳㠱㍦㈸㜳㐰㍥攵扡㝡㜳㐸㥥㡡敦㡤攰㌶扢ㄹ㜱㑡捣攰㘲㡢捦㕢愵捡摥づ戳㝦捦〳㍦愱攱ㄴ㌰㍢搹㉦摦㡥㍦愴捣㠵戹㔹戱慣㙣㥣搶愰㡥㑡㜳㝡㙦摣㐱㌰㙤㜴敢攸㤶㐹晥㔳㘱挱㡦昱ㄶ晡㌴扦敤㔳㠷ㄴ㥦愰扥ぢ㐵㉡捥晣㔹ㅥ㐹㙡㍣ㄲ攵摡㔲㤷摤㘴㑡扥㤱摣㘹㌳㑡扥ㅡ挹搹戶戴愵㝢㠱攴摡ㄲ愷摣搲㈶戶〱搱昷〱愰㉢㌸㌳㙥㈵㤳㙣愸愱㜳ㄴ㈴㐲㥣㔶㑢㥥敤ㄴ慦㔲㌳昱㈱敤㘸㈱摥㥤ぢ摥㍢㐰㔵敤〰攵搴㥦㔷㐹晤戹㌶愳攴换㡢㥣㥥㡡晡て〳挹愹摦㠱㠴愸昲〸㄰晤㈸〰攲捦㝣㝣㠸㘸㐱〷收昴㔳㐴ㅦ愳㔴㤵攲ㅣ㔲戴㙥㜵㙢晤㍤收攵㜴慤㥣搶㈷㔵搲㝡慡捤㈸昹㔶㈱攷㜶愲捡㔳㐰㜲㕡㜳㠲㈷慡㍣つ㐴㍦㐳昰㉣㐰㔰挹㙣㡥昶㜶晡㉤昳㠶㌸㝦ㄳ昱攷㠱㐰㜳㑥挲㐴昳〹㙥捤㕦〴㔵㜱收㔳㑥昳攳㉢㘹摥㘸㌳㡡扦散ㄷ㡡愱㈴㜹改㡦㠱攸㔷〸㝥〲㄰㔴㥣㉥挹摢㡦戵摦㝥っ㜴っ攰㤲散㕡㠷㌱搶㘶㡣㘵㑤㝥〶慡㥦搳愵戲摤㐳敥攸㌷㕡ㄷ㤹昳扦㐷挷づ攱㡦㌲㜰っ㠹㕡㍦〷挷ㄹ㡥㝣ㅦ㉣㉥㥢敤㌵戸搳㥣挶㉦挲㉤挰㌵㝤摣㘴挶敦愱摡㕢搳戸扥捦换㜶捥慤㔹㉤㈹㘶㌶愲㡢搳戸㐶㕢ㅤ敤挸攰换〰㤱〰㝥㘶㈹㡢㕦攸㑢敥て攷㕥㌸晥昰挱㐰㜸慣㑢㥢㘵㑦ㅥ㜸愴㔰㝣换搶昵㡤㠷扣㍤㥣㙦扤㜸㜹ㄵ㝡捦㑥扤㡣㥦㐳㥤晣㌷挳㌷㌰〸㘷扣敡㔳昰慢散㈶扥摤㜲戰㐴㈷慥つ昵㉦㈱㙢晣〷〰㝦㡤㠸昳〱戶昸愰晥ㄵ㌰㌹搶ㄵ攰昱㜳〲㔹㕣㌱㥥〳捤㘱㡥愲ㅦ㌵ㅢ㌲㠴戵敤扡攱攱㤹晦ㄸ㝦㐶慢攲ㅣ㤱㉤挸搸〹攰摣㐸㡣戸㙥㥦晡㔴扤愳㥡攷㍣㑦㕥戵搷㤹改つ㠰㉡散㡥㑢㍦ㄴ搵摥〴挵愵㥡攲㌴㤳敡㌹㡦攲摣㑤㕥昸ㅢ㈰攵㕦㌸慡散ぢ㝦〷㜹攳昷〰㠵㉦晣〳㈸敥ㄷ㜲晡攷㝥㘱㠸㜳㉡改㙣㙦㔳昲ㅤ㠲㍦〱〴搵㈵㠰搲搹㠶摢㝤捡改㙣㥣㙡〹㘳㤸捤㤰捥昶㉥愸敡戳〰搴㕥搳㡢㕥㌵搴搱戴挰㙢㝦愵〰扤㤶昷搸㝢㈴㉤㠳ㄱ㉣㡦愹㝦㐳㥡㕡㍡㝥〸㜱づ㈵㕡晥て㈵摦㈷昸ㅢ㐰㔰㜱ㅡ㈵捡ㄸ㙥㘵㍥〴㔵㕤攳戰㝣㐵ㄵ攰㌴㑡㙣晣て㈰愵㙤捤㕢㔶敢㝦㐲㔶慦㠲㡡㜹慤ㄵ愲慡㕢敢敢㈰㔲愰㌵愷㑥愲㌵敥捡攳〷扣〹昸㍢搲㐱挵搹㤳㘸晤挱摦慤㘱㙢ㄸちづ㘰扡挰ㄹ㤵㌰晥㘶㌳ㅣ愳㜳㤶㈵㡣昷㙤㠶ㄸ㕤愳㌴挵㈹㤵ㄸ㥤搵昱慡昷㈰㔰摡㔵㙡昸昲㐲昵㠷㤲攴㌲㍡㘷㕦㙥昵㝤㥣ㄲっ㌶㈱㐱㝥㑦㜵愲㍢捣ㅦ㌷て㈴扡攳㘶㜲㜵戶㉦昷㠳收㌸晤挷慦户改㄰愴㔰㡥晣㠵㌸晥㡢㐱㠶昱摤挳〹㐶〰〴搵㌶㌰愴㝡敦ㄴ搵㥢搳〲㘱扣敤慥昷㠱挸愴㌸〵㜰搵晢昷㘵敢㝤㌰摦㔱㔸敦㐳㐸㜲搵㥢戳〵㜷扤㐳ㅣ收㐵换挳㈸㜹㌸挱ㄱ〰㐱挵㤱㕥㤴㜹捤慤捣㤱攰㈹㡥晦挲晡㜵㔱〵㌸攴扢戴晣㡦戲㕡㡥攱㍢ち戵㍣㥡㈴㤷㤶摦㐳㌹〵㕡㜲㔸ㄷ㉤挷㔲昲㔸㠲〶㠰愰攲挸㉥慡扣㘲慢攲㌴㉥㡥昶挲昸㜱㤱㡥㥣〱〸攳㘵㥢㈱㡤敢㜸㤴愶㌸敥㡢晡㔶㡦晥㘱㔹昵㕢昸昲挲ㅥ㍤㠱㈴㤷晡㉦愲ㅣ户晡㡡㘳扢扣昳㌹晢㥤摣戲ち㜸つ挵昱㕥ㄸ捦摡っ㝥ㄷ㈳㠰㉦攱㜰づ㈰㡣㘷㙣挶っ㌰昴ㄴ扣愸㡥㈳㍤愷挷搵㉦攱㡥搳摡慡㌷搵ㄳ摥㌷㌱㤵㝡搷挳戳愳㌸晡愹㥦㐳挵㙥㡦㘱㥣晡散攱愵㠶ㄳ㘹戴㕦攱㘵㌲昵㥡捡ㄴち㤳㍦づ〹㔴㐳㥦㐴㉡㐷〲㤱㤹收㤶㘱ㄴㄷ㤹改愴㌲㜸㡢捣っ户っ〳戵搸攱㝢㐵㤶㘳昰ㄶ挶㜷㡢㉣昷㈷㠷昱㤸摢㜲㙤㈸戴㡥㘱㝢㔰换㈹㠶㙢㔱愹㥤㑡㌰㔲㡢㑡戳摤㉡㌱㉡换㥢ㅦ㉥㔲㠹㤱㕡ㄸてㄵ愹挴攸㉤㡣〷摤㉡㜵㔰愵て挱捡愹戴挳㜶收㉤㉥㘷㉡挶㘲㔱改㘴㉡挱㌰㉣㉡捤㜷慢挴㤰㉢㉦搸㔱愴ㄲ挳戰㌰敥㉦㔲㠹愱㔹ㄸ摢摤㉡㉤〶戵㡥㜱㌶愷搲戶慡㡦搰摤㜷慡㉦㐱愵㉤㜸昱ㄶ㈸愰ㄸ㕦㐵愵㈵㐰ㄴ㐳慢愸戴ㄴ〸㤴㤵扦㍡㠶㐲㔲〳昸昴㈸㠶㐰㜹摤扤㐵ち㌲㉣ち攳ㅢ㐵ち㌲㔴ち攳ㅥ户㠲换㐱慤㘳㐰捣㈹昸㘸㤵捦换づ㜰ㄷㄴ扣〲㉦扣㠲ち㌲㄰㡡㠲㉢㠰㈸挶㐰㔱㜰愵㡤㌰愱ㄸ敦攴〵㜷ㄵ愹挴ㄸ㈸㡣㍢㡢㔴㘲㕣ㄴ挶ㅤ㙥㤵㑥〳戵敥㐸㠰㥣㑡㘵摤挸愸㈷㉡㥤づ㐴㌱攰㠹㑡㘷搸㠸愸挴攰㈶㉦戸慤㐸㈵〶㍣㘱摣㕡愴ㄲ㠳愰㌰㙥㜱慢ㄴ〶戵㡥ㄱ㉤愷搲戶慡㥤㌹㌷昲ㄸ扡㡦㔶㘲㈴ㄳ㤵㝡㠰㈸〶㌱㔱愹ㄷ㐸捥㡤㡣㌸㉢改搳㑤慡㜷㔵㘴搵慡昷敢㝣昵愳㝣愷捣慣戹攱戵攷摥搸晡捡改搳㝥昷昷㉦㝦昹㤵户戶扥昰昷㐷㝢愶㍤㝤摢㙤㑦㥣㝣昳ぢ㙦っ㡦摥攲㝤攰晤〵户㥣摤扣昶散昵搱攵挷捥㍤晢搴㌵㑢㥢㤷っ㙢愸慡慡慥㍥㝡挴㌳〷ㅤㄳ㍡㙦晤㠳敡昱㥦㝦㈲愹㈴㠶攰〵戹㑤㉣攰㥥㄰㘳㠹挴㝢ㄳ〸㤶㘲ㄲ㐵㈸㌵㠵㥡搹㑦㠸搱㐴愴㔶㕢㔲ㄲ㐷挰搴㝤㐸㍢㑦㠸昱㐴愴㘲㈲㔵挷㔰戰㑦慢㈴戱㠳㙡㌸晢㜲㔴㈵挴ㄸ㈲㙡慣戵搴㘰昷摦愷㙡㐸扣愰ㅡ㈳摣㌶㘳摣㄰㌵ㄲ㤶ㅡ散昲晢㔴つ㠹ㄱ㔴㈳㠹㌷昱搱昸ぢ㌱㔶㠸ㅡ㈹㈰㝡ㅤ㐰慤户㡥扤㝢㥦敡㈲攱㠰㉡ㄴ㌴㈳㠶〵搱㈵㑤㌵慡敡搸愳昷愹ㅡㄲ〲愸㐶㠱㘷ㄸち㐴㡤慣愵〶㝢昱㍥㔵㐳扡㍤搵攸挷㥢昸戰晢㠷搸晤㐵㡤つ㐰昴㐶〰㙣昵戰ㅢ㑡㥣戹搴㡥㌳戳㈰ㅡ挰摤㙣昶㍣㘱㙣㈹㘴㠴㥣㉥愸搸敢㐴攲㤲㐲〹挵㝥㈰㡣㡢㡢ㄸ㙣㤹挲戸愸㤰ㄱ㘲ぢ愲㙡戵㍥挵㘶㈳㌲ㄷㄶ捡㈸㌶㈵㘱㕣㘰㌳㐲挸愰㌷㠳慡攸㕥㘱㥤㔷㤴㠷〶ㄷ挶收㐲㐶㈸㘷ㄸ摡㐲㈴捥㉤㤴㔰戴㡦㌰捥㜱扦敥㈲㔰ㄵ摦㈹攱昵㘲愶㐸㤲搴㈵㑣〹㠹㡡攵摥㠰㠴ㄲ㔶㌱㜵挸晦〲摣挰挵ㄱ | D27: 㜸〱捤㔹㕢㙣ㅣ㔷ㄹ摥㌳扢㌳摥㔹摦戶㐹ち愵㌷㕣㘸改挵㘶戱敢愴㐹㕡㐵㠹㉦㠹攳挶㜱㉥敢㌸搰㐲户攳摤㌳昶搴㌳㍢敥捣慣㉦㉤㔰㉡攰愱㠰㡡㈸愰慡愵㤴㜲㜹㐱㐲ㄵ㍣㈰㔵㐲㕣ㅥ晢㡡攰戹〲ㅥ㐰〲ㅥ挲㍢㔵昹扥㌳㌳昶敥㝡敤㌸㘹㤰㜲摡晣晢㥦摢㍦攷晣攷扦㝣攷㌸㈳㌲㤹捣〷㈸晣㘵挹㤱戹戳扣ㄱ㐶搲㉢㑤昸慥㉢慢㤱攳搷挳搲㔸㄰㔸ㅢ㌳㑥ㄸ㘵㌱挰愸㌸攸て昵㑡攸㍣㈷昳㤵㔵ㄹ㠴ㄸ愴㘷㌲昹扣愹愱㍦晤㔷㑣ㄹ㤳戳捣ㅣ㐸て㐶㘵收㈶挶捦㉤㍣〳搱攵挸て攴搰挰㝣㉣攰搸挸㐸㘹愴㌴㝡㜰昴㤱搲昰搰挰㐴挳㡤ㅡ㠱㍣㔶㤷㡤㈸戰摣愱㠱昳㡤〵搷愹㥥㤱ㅢ㜳晥戲慣ㅦ㤳ぢ挳愳ぢ搶挱㈳㈳〷てㅤ戲㡦ㅥ㍤搲㘳㐰昲散挴昸昹㐰摡攱㡤㤲搹㐵㤹攷㈶挶㑢戳㌲扡㔱㌲昳㤰〹㤱㤳扥㘷㌹昵ㅢ㈴㔴愷㠲て㑤捡慡挳㤳㤰㌲㜰敡㡢㈵㉣扢㐵搱愸ㅤ㉥㡤㠵㘱挳㕢攱愱㑥㐸搷扤㈸㙤㉥挷昴㈶挳攸扣ㄵ㜸㘱㡦㐷晤挹㐰搶慢㌲散昳㑥慥㔷愵㥢っっ昳摥扣ㄵ捣㕡㥥捣㤱改昷攲㌳㥣慥挹㝡攴㐴ㅢ扤摥愵㔰㕥戴敡㡢㤲㐳㜴㙦慡攱搴㐴㉥㠷晦㌳搹晢㍢慤㑣ㅤㄴ搶攳㑤㉣㔹㐱愴㙡㍣挲㤱㑥㘳㥢捣㐵敤愲㘵㕤㌴愹㠱戶㔹㍣戳戲攳㥤㤱㐱㕤扡晣〸㑦㜲戰㙤㤰㔲㔰㝣づ㥢㥡㑡户㐳戵㠸敥挴ㄳ戸ㄷ㝥挵㌰㐱㍥㌳敢〷ㅥっ㜲挶㥦㘸㐴挷㠶㠷㑥㍢敡户㌴㝣㜸攸慣戴敡挷㠶㑢挳愳㐳攵愸㌶㈹㔷挹㡦㤸〵㑣㌲扢㌹扤〷㐴㍢㜳挴散㘵㑢ㅦ㠸挸晤〷摥搷晣ㄹ㡥搳㉡㤶㔶㔹搰㉡㔵慤㔲搳㉡㔲慢搸㕡㘵㔱慢㉣㘹ㄵ㐷慢㍣愳㔵㤶㌱㈶㉤昹慥㉥㉤㈹て慣て摣昶昲晥扦捦扣晤㡢搷㝥晤晥慢㐳慦ち㍡㥣昲搷㈲㤸搶㘵㡦㡥ㅣ㑤ㄶ㍥昲昰昰㜰扣㜰戶㈵敢㍥㌸㍣㙣摥㠲㐹收㍥㄰㘳㍦㠸㜶㘶搴㍣挰㤶㕢㐱㠴昸㈷㤶捤愵攷扦晤搲晡愳㤷晥㍢晢换扦㝤慡晢昷㙢敦㥦攸昹㈸扡㉦㈴㙡㥢っ慣㌵ㄸ攲㤶㡤㍦㕣㠲㐲昶攲摣昰㙤晢㤰㝤搸ㅥㄹ愹ㅤㅡ戶㐶㉤㥤㍡摣慢ㄵ㜱户㍤昶㘵愷㕥昳搷㤴㔹摤㌹㙥㠵㜲换捡〶㤳扥㜱扦㔱慦㠵㜷㜴敥㉣㐷㔶㈴㙦㙦敦摢ㄲ戲㙤㕡ㄹ㑥㈷㐳昵扤扢摢愷捤㕢㙥㐳㡥慤㍢㜱昷㕤㙤摤㜰㌹㝦㘱攷摥㔳㠱㝣㜶戳㜷摢㡡挶㄰愰㔷㤵散㙤扢㡣扢攲㜵つ㑣㉣昹愱慣慢攵つ㝡攷㥤敡戲っ捡㤲攱㕤搶搴㔶㙦㘵㔷攲昷㠳攷敡搸㈸㍣戹昶㠹收㔶晢攴㝡㈴敢㌵㔹挳㝡㔷㘴㄰㙤捣㔹ぢ慥晣㐸换㤰昸㥢攸昸㔸㑢昳㈹扦摡〸㈷晣㝡ㄴ昸㙥㙢捦㔸㙤搵㐲慣愹㥤昵㙢ㄲ愱㈲挷㤲ㄱ㤹㙣㔶㠸捣㐳㥤晣㤵㜲挳㤲㍡㠸愶㈳㘶攴戸慤搵散㑡ㄷ戱㍢散挲㤵戴㐹敤摥慢〸㔳㜲㈹收挱㥤〷㌶敤㠹戹㤰愳ㅦ搸㜹戴㕡攳收挹晤㝦〷㙢摡晥㘴昷㈷㔷ㄱ㡦㑦㕢昵㥡㉢㠳㕤㌳戹攰㡡捣摢㐰昴㝦挰㤳㜷搴ㅥ愳㠸㔸ㄷㅢ晡㥡㔳㡢㤶㡣㈵改㉣㉥㐵㘸㐳戶捦攷愹摡㙤挵扣ㅤ㑤收ㅤ㈴㜷㠲ㄴちㄹ攳㉥づ㌲ち收摤㜱㕤㘷㤸扢昶㐸㑦㍣㘱慡捣〲ㄸ㄰敡摥㈹㍦〸戳搹㑥扢㍣㙤㠵㑢ㄱ捤㜳搷㑥挶㜴昳攳㈴〳㈰㍡挳昲㔵ㄳ㐹㍦〶攵㤸㉦㝢扤㐹㘹㕢㐰㈹捡扢㠵愵㝢㜱攲㥢㤴㘱搵㘴㠶㥣㠶慦慣ㅢ攰攰晣㍤ㅥ慤㕦慥㐷㤳㔶㘴㜵㜹挸戵㌸㈵ㄳ㠳〶搵慣㤸攳捣㕥搵㤶捥㉥㈴㌵㐸㈸㉡戶㐹㑡户㙡㠸㈵挱㜱攰㉦㤹㙣㐲㜷摦〴搶捥㙣㘸戴ㅢ㝡㙢捥㐴㉡慦㑤挹晡摣挶㡡っ㌹㍣㙦散慡捡㜶昷愲戰㜳搵㠵㑢㤱攳㠶㈵慣㜴㉡昰ㅢ㉢㌷㔲づ㘵㤹昷㠰愴㐵㝦て㔶扣昷㍤ㄱ改㜶慤昲㙣㉡㤵㑣㥥搲搸㘲㌲㐵㥢戴㔶〸晢〰㍦慡㤸昷攱愷戰㕢㥦捥㙣㝥㉤昸㠲愶搷攳㐱㐳㜳㠱㔴㠸㈹慦㉡搰㜶慦㜷搹て㤶ㄷ㝣㝦㤹昶搴愷㙡攱㤲㤴ㄱ㔱㐸㜷㠲扡ㄴ扡ㄲ㈲㥢㙤挱づ㑤㜰㠵昸挵㜸㄰愴㜷捣㜵〷㔲㠹愱昱㄰㥡戲挰㐳挶㈰㤸晢愷愴ㅦ㉣㍡㔶㘵㙥晥攴摣㔴㘰搵愳㔳㔶搵㜱㠱收㉡挸摤㜶戴㍡㜲戰戴敥㠶敢攲捦㔰〶搳晤晣愷㡦扥㌷ㄷ㍣昸昸捦摦㜸昷愹摦攴㠷㜴昱愷愴㘳ㅢ昶㈰㝡㔰挰愷〴㐶晣ㄱ挳ㄸ㘴挰户ㄶ㜳ㄸ㜵㜳㠴攴㘱㄰㠴ち愵㝣㐴㡡㠳㜱㔵㄰㠱㌰㕡㤸㠷㐸ㅥ〱ㄱ挴㈱ち㐲ㅤ〶㤳ㄶ昱㉥攴搳〴搴㌱ㄲ戲㙣㍦挶挷搰㕡㌰㜷改ㄳ㐴㌷㍣㑡㤳慡㌳愹㉣㤳㡡ㄲ扦㠳攰㡥ち昸㙤搲搱づ㠴㜴〶搶㙢㐸㘰㙡㡢昶扣㈳搷攸㜱㝤㌶挰昴㐴㈳㡣㝣ㄵㅥ㝡敤㐹㝦搶㡦㈶㥤㜰挵戵㌶昶摢〹㜳㜹㐹搶㤱扣〳攴昰戶㌶㝦㘵㐵搶㑣扢散㌷㠲慡㥣㥥扣ㄹ㤲㍢搴〱㍤慡扣慥〹㤴敢换㔷㄰㈱㘰㈵㈸ㄹ㥤㔹愶㍤散㈸㐸摦〴ㄱㄴ㑢㐰搸扦愵搱㌹㈷㜲㘵户慤搲戳攲昳㌶戴〸㐴㔴敢戲攷㤶攰㡥㤳扤昶㔴攰搴㕣愷㉥㜹ㄸ〷攲愱㌳㜲ㄱ攸攷扣ㅦ㍡扣㍤昵摡㜳昰㤷㜰㠵㠱扣扡戱慦愵愶㈲扥㙥㡦㍢昵㄰㥦㔱愷㐸扥摦㉥㉦昹㙢戸㔵㌷扣晡㤴戵ㄲ摥ㄴ愷㐲㙦㠹㡢㍡ㅡ愱〹㑤ㄳ㜹㉤㝦扤攷㘳㑣㐲摡晥昸㡡㌴〰㍢㡤〲㘷愱㐱㠵愹㡦搰挷㜳㈴敡っ㌳㍡㌱㐲㝢挸㙥㍡挲㌶扣挵戵戶㕣㔰㍢愶晥捤愷ち㠵㙦㑥㜲捥㈹㤰挷愷㉥㑤㙦摤㐴㍥搴㔳㠳㑥㔴戳㘷攰愷㐲㑡㙣㐲〴㠳戴㈸㜸㈶㉣㠱戵㜶戳㉣搸㙡っ㉤戴㙦㡢㍤〵散搰㘳捦㔸ぢ搲〵攴昱慣愸㉦慥㄰㝢攲㉡ㅡ㈶㝤ㄳ扥攷㔹㌴㌹㕥愸换㔵换㤵㜹㝢慣ㄱ昹㘷㥤扡㘹㠳㈸扢㑣㥡慣㜵㌴㔹敢㌱㌸戱㉦昲㉡愴㜸捡昲ㄷ慤挰㠹㤶㍣愷㥡㘷㠵搷㤵㥢挲㔶攱晣〴愳㘹㐹㘳㐹㍢摡㠹㌱〷㡥扢㠴ぢ〲㔵挷攳㠷㐵㙢挲挰㝦攲㍡㤱㌲〲㡦㑡㈸收㘹㐸搳㠹㐴ㄱ挴攲愵㕣㐹摦捦慥扣㠰ㄶㄵ㥣〴㠱㉥扢捤改㠴㘱㈵㐷慣戹㉢㡣㈲づ㈹捣昸㔶つ㠹ㄸ㡦㘳㕤挹搳㔸ㅥ㐷换㔰ㄳㄴ〹㙣㈷㜰㔷挲ㅤ㙣搵愹挹㈰捦㠶㌲摥攱㜲㠴挴㐶㝣㠶㐸昱搹㡣慥㜷攷㍢㝤㙢㍡㤵㜵㙦〲ㄷ㥡摦昹愶户挹晦昷㠵㈳挷戱㈸㙣㑢愵愸挷挱㥡㘷㐰挴〰〸昷搳㌶㘰〶㑤收㔹㄰晤ㅥ㤰昶戳㘹挵㤸㐰愲㝣㔱挹愹㐷㈵愲摦㍣㤰愲㠲捤扡摡㐸㜷ㄳ摣㌵㘲愴㥢㑦㕦慡㡣㌲慣㕣搶ち㜱㝣㈵慣收㜱㘸㕡づ㐷㙤戴㍦ㄵ㙣晢㉣㠴㜹㘵愹㜰戰愰捥㡤㔹㤰〲㥤〵昲㉢㜸愲㘹㠷㠰㠵㠲㜹ㅥ㐳㌲〵㐱㉣㤸敥㍢扥摥㈸挵㕣㐰戳㜹ㄱ㐴㄰昱㌰晢搳㐲㤲㕣㈵〸㜳㤸慦㌲㐶ㄹ㘴慦昱㔱㄰ㄸ愹㝢搴ㅣㄸ挱挰挹㉦㙥㥡攲㍣昸慢㥢㈲㤱㤴㌲挵换〹挳㡡㈰㥣㑡户〱㌶㍤摦捦㠲㌵㍦〷㈲〸戵㍡っ㜸㠲〳㥥攴〰愲㉦㥥戱昱㜹㤰㉤摤㡤㜶搲摤㔳ㄸ〲摤ㄱ㠰愵㌲㈹㍦㌱慡ち㔸昳㘹㄰挱㜰慤搶㙡㈵っ摦慦㜴扡㕣扢㈵㙤昳㜲㠶㠶㠲㑤㝦㉦㐷ㅢ㉥㘲㉣㔹㕡㔶捣搱㐷攲㙥搸扢ㅦ攰愵㍢搷㝥攵摤㥣换㕢㙤昷㠱戶攷〴㌵㡤㍤っ㈷晡㥢挰㝤㍢捥攷づ戶敥ㄶ㥣挳㘲㔴㐱づ㥣㜵慡㠱ㅦ晡㜶㌴㔰〶㝥ㄸ攰昳㡣㥤挹っ㡦改㙦㐰㘲挷㙦㜲㘳戹㍡ㅦ㔵㔷㜹㕤㈹㉣搷晤戵扡㕡㡤ㅥ昲㤵㑡改慢慢㡢㥦㈱攲㔶攵㤳搰㘲㤱愱㠷㤳㑤〹搲㥢㉤搲㜷㔹㡡昴㕦㤶㈲㥤㤵愵㐸㠷㘵搱㘹攴㝢昵ㅥ捡ㄶぢ愲㉡㙡㐲收扡扡挴㝤㙤㙦㈱摢扣㙥昳㌲㘹ㄸ㜴㍡晤㜵㙣㜹㙦㤳㕡㌵捡挹㌴っ㜳㤱㘴〹愴㔰愴晦㜱㐱㠶〳㜲换挴㜸愵昵㜹摡㜸〶捤晢搰㡣扢㑦㝡ㅢ愲㜱ㄸ换㘸敦㐱扢ち㌸㜸ててつㄷ㉤㝤㘸㘹㐲ㅦ㐵㍡戶㔲愵〷㐶㕤〹搴㡢慥㝡摢ㄵ捡㌹搹晥㉣〸㔷捡戵〹㍡㈷つ㔷扣㡣㕤搲㕣挰㘷㡣㄰㘴㐷ㅢ㄰摦挲㌰摡㐱敢㌹㕥挶ㅣ昵昱〶ㄸ㥣㈳㝤㤴愵㐸㍦㘵㈹搲㈹㔹㡡㜴㑣ㄶ㐱㠷攳㔹㡡㙦㐰ㅣ昵慣昴戵㠶ㄶ㜳ㅤ愴㔰愴捦㈹㝤㙤㠰搹慥㉦㤳晡㌲㥥〷㘹㔵捥ㄷ搱搲慥㥣愷搱愶搶昷㈵㌰戱㜲昶㤱扢〵愴㘸愵㥤㉦㠲改捤敡戴挵挷摡っ愵㌳攴ㅢ㙣㝦㙦㍣㠹昷挳つ㘶摥㉣㜲㕤㥣㈱㜲摡愳搷㈷㡢愶㘸㐰ㄴ晦改㕦㠶㝥㍥㠴㥣㔶攳愴㐴挶㌸昳慢㈰晤戴㔰ㅤ晦搸摡㔴慥ㅣ㑦㉡㈷攲摦㝣昲㕢㍣搱㑦㜳㔶㌳扥㈰敥㜹㘵㑣晦换ぢ昱〸㈶摡㜷敥晥晡扦㝥㜵㥣昴挲㍢㙦ㅥ㝦晥挰摢㔳㝦㝤敥㙢挷〵㙤戲搳愵㜵〳摢敡㜸㘹㕤㑦㍡摡㙦敤㐵ㅡ戰㍡挹㤷挰昴㘶〵つ㡥〷㈶㔶㌱㠳㕡㔲ㅢ晢㈶㕡晡㘹㑡搷戶㌱摡摤昶㡤㕤〹㑦愰㍤㤳昹挳㉢昱㙦㕡捦㙣㥣㄰戴愷㑥ㅢ㝢㜶愷㡤慤㈴ㅤ摢㙥攳㌴扥慢摤挶㥢㕥昰昹挸愷摢㡣て摤㜶摣㑣㝢㐱晡㜰㕣㔷㐵摥ㅥ㠰攷〰㙦攸㌳戸㈳〲㌲攳㑦㑤㐹戸挱摤㤱㔸㈴㠵㘷愶慡㈹㘳戳捦〵挰㙢㕤昶㜴㠸扢㝤㉤㡦㌷挰㈸挲㥦愷㙥〶㘴㡤㕣㤸愳㕦ㄱ㌷〲戳㘸ㅤ搳㄰昳换㉥㤷㥥㉤㝤愴㑦攳ㅡ㌱昷昵㕤昳㡤敦攰㘳㈹㑡慡㌵摤㈲㜳愲㡥㈳㡥㐳攴㔷㌲ㅦ㜰挹〰㝤ㄹ昳扢昸㌱扥〷挲户㉤ㄵ㠳㐱ち收昷搱ㄲ愳㜶攲戹㡣㑥㤷㙣摦ㅣ㠱挱㈹敥扥敤㠱扢扢㥢㍢㑥㡢愰㐷搰㡡㡣㔷㐱㍡㉦㙤愹攳搲㕥攳愴搷㐱㕡㤷昶〳戴㌴㉤㑤搰愹戸扣戴攸摣搲㥥昵捤㄰戴ㅦ㤶㤹晣挱㝥ㅣ㔷戶㐱㤷㝦慥敦㜴〳㘸扤㈱晦㄰㔳〵ㄵ㐵ㄹ收㥢〹挳㡡攰搲戹っ昳㐷慣㜱挵㙡捣㕢〹愳挶愸改㘸㌰㝦っ㤲㤶㈲挵愸㐰昲ㄳ㌰〸㈴㑡〰㔸昳愷改㄰晣ㄶ摦〲㔱愳㝥〶〶㠹㉤ㄵ㈱㌸㑢挵㥤㈷愱㔲挶㥤㜱㌴攴〱㘹搲改㠲㌳搴㠸㈷㕡㐷㜴晦て㡥㠳㌱㐲
A28: Decisioneering:7.0.0.0 | B28: Decisioneering:7.0.0.0 | C28: Decisioneering:7.0.0.0 | D28: Decisioneering:7.0.0.0
A29: CB_Block_7.0.0.0:1 | B29: CB_Block_0 | C29: CB_Block_0 | D29: CB_Block_0
A30: 㜸〱捤㥡〹㔸ㄴ㔷戶挷晢㌶摤㑤㌷㡢㈱㈰ㅡ㡣㥡搶愸㈳〱㍡㈲攰㡥㐲㌷搰散㈰戴戸摢改愵ㅡ㑡扡扢戰慡搹㡣挶つㅣ挵㉤㌸㑦㡤㠹晡挵㈵㌰戸攲挶扣㤸挴㡣㜹捦㐴㈷㑦愳㑥㐸㌴㡥㔱昳㡤ㅡ㘷㕣ㄲㄳ㤷㘸㠸敦㥥敡㡢㘱戹㌵㤳昸㝣摦㤷㔲㑦㔷搵扦敥慦㙥摤扡攷摣㜳㙦㈹㐳㌲㤹散㈱摥攰ㄷ㌶〵散昴捣慦ㄴ㍣㡣㑢㘷攰㥣㑥挶收㘱㌹户愰㑢攴㜹㑢㘵㈶㉢㜸㝣昰〵㉡㌳㡢㜵㐱㘹ㄶ搸㤹㡣摡㕣挶昰〲扥㐸㈹㤳愹搵ㅡ㌹搶〱〲晦㠲㕡て㌴㔰㉡㐰㠱㡤挹愰捦戱㑥挷搴㝣て挷㌳㤱摡〲㙦搹昸攸㘸㕤戴㉥㈶㌶㘶㠸㙥㔰愴搶㔰敡昴㤴昲㑣扣㥢㈹昵昰ㄶ㘷愴㌶户搴敡㘴㙤ㄹ㑣愵㠹㉢㘶摣昱㡣㜵㔰㡣搵ㄲ㍢㉣㍡㌶㉥捥㌱㝣昸戰〰㝣㙢㔹慥㐱㥦捡㌸㑢㌰敦㐹㔱㔵㤸㥡㙤搰攷昲㡣攳㐹㌱㤵搰㄰搱㐹㡣㡤㠵ㄶ㘳ㄸ㥥㜵ㄷ敡っ㝡晣户㑤慢攰愳愱扡㥣晣㝣挶㉤戰ㅥ戶㡣昵㔴挲昳㘹㕣㌹㌶㙢㠱挵㔹捡愸㕣㘲㤵搴慥〲ぢ㥦㙤㜱㌱㠱慥㜱〲㤳㘷㜱ㄷ㌲㜰愴㜴ㄹ㑢㔹扢〲扦㐹㥦㜰摡㡤㐸㈳改㜲っ㝡㐳㤱㠵昷㠸㐸戸挱㡢戴慢挵㍢改摡㔴㐵㉣㈳㥥㠵收㐱晥愴慦㠸昷㠴㕡晡㠲㔱㘳愳搲㘰ㄳ搲愶愴㔶㉣慡㡤㐶㡡㍢戸挷戵㉤攸㡦慦㤴㥢㉤㜲戳㔵㙥戶挹捤㜶戹㤹㤱㥢ㅤ㜲㜳愱摣㕣㈴㌷戳㜲昳㜴戹戹ㄸ㕦搳扡愹㝤㝤攵㘴㑢㕣昴昰搸〲捦捤搴㍤㠷慦㙤摥㍤扤慥㕢〰戰戲昱戳改戲ㄹ捦ㄳ敡〸㑡㜸愶㕦摥㤶〱昸㙡愵换晢㉡㤲ㄸ挱愶㠱昷㤴收戶㌳ㄵ㉡扣㠷摦㕦㠰换挰戹㍤㑣㠵㈷挹攲戱昸扡㜲㉤㍣攳昶㘸昰㐵ㄱ㘲㈹敦ㅥ㤴っㄴ捦戵㤶昶㈳㐷㤸㄰㈴敥戶愱昸㡢㈷扣㈴㠴㕤捦㐷攱戵㙡ㄵ捤㤹㔳㉤㐲㤱挷㘲㜵㌲晤㍡扣㜲㘸㌷摣换挶㜹㔸愷愰挳㐸㈳捦㤵㤶㐰㡢㍥㈹㡥搸㤱愱㘳愸〲戱ㄱ㐳て晣攲ㅢ㈴㘸扡攰ㅦ㍦つ㠸ㅡ㄰㈱㉣攱ㅦ扣戵㙡〱挱昸〰㔷㌱㠹㜳㔹㔸昷ㄳ㝡戹〱㈱ㄸ㍡㤶昴攲㈴摥㔲㡥㍤昲㘷昴㘰摤㈰昸昳敦㐳ㄲ㡥㐸㡥㌸挷㔰㐷㜴戴㍤㙥㤰㈵挶愲〴ㄷ昸戵ㅥ搵ㄵ㤷〹㜰㡤㘷摤㜶慥㕣㜴戱㘰ㄷ昶ㅦ搱㙤㑣㤵㈵㡣㜸㉡挰㘱戲昰㠵っ㜶㕢㍥㉤愹慢挳挰昱㍣攳戴㜸ㄸ扢㜸〲㈲㜴昷昶㈷㠵ㄴ㥥㜳挱昹㥥㝡㡢挰晣散扥ㄱづ敦㡤昴㕣愹摢㉥㍣㑢ㄷ昳㍤ㄸ摤愳愳昶㌳愴㔳戱㝣ㅣ搲ㄸ㐱慣㘹敦㡥挵挴捥㥦㔸挱㝡攵㕥ㅤ㘴ㅣ搴㌸慢戴㥡挲㌳㌳ㅥ愹㥤㙡㤴㠸㠷愹㌲〶昴㑥㑦改㤵扣昵挲㈱㠸ㄳㄸ户㔸扤〸㔷㉥㙢㉢㘶昸㝣〶〶㌹挶㉥㍥㙡㈸㐸っ昶㐷ㅢ㈳㐴攴㐰搳攳愸㙡敦摢昶慣㈳戹挲挳㘰㙦戶攳晡攲搱挶㔳㘹〲㑦敡搶敥ㄲ敦㍤戱㄰搶敥㜴ち㘷㉢ㄵ挰㙢㜹捥搹㕥㐹戴㤷㔹昰㍤敤㔹㥣㥤㔱㈸攴㍥㌲㠵㑣〱ㅢㅥ㐶㝤㝣戰㉢て敡攰愸攲㤰〱㙣愱㙤㙣㙥搳㜳㈰㌸挷晣愲㐲敤扢ㄷ㤴愳㠵㡣㐷攳㍦㝡愶扤慦攸昲㜰敢攱㔶㜲㌲攰㐸昲㡥ㄱ愵㑤㐵㝦敥㌵㜰ㄳ㙡㍣昵㍥㔱㥢㌶㠳㝥ぢ㔷て㤴㝥ㄴㄱ晢愸㘷晣晦㕥㉣㤷㠷㤰愷㑦㉥挳㌱㍢搵攲戶㍢ㄹ晥㕦户ㄷ搴㐸〳㥥慤〹〵搳つ㑣㜷㙣㤰昲㙢ㅣ攱㈴㕢ㄳ㤲㈵㔴㠱㉡㤵攵慣摤㔳愴㉡㘲搸挲㈲て㍥㠷㜳㉣戵ㅡ㥡扡〷㑥㈵㍥挴扦ㅦ攰㜰摦〰搹㤶㈶っ㑣て㙣晣晣晣扣㌱㔴攵愷改㠹㡦㔵扤戰㔱㐰ㅢ昹挹ㄴ㄰㘶㘹㌵㝥㌴㈸挰㘸攷㤷挹㔹散㈹ㄶㅢ㑥搲㝣㐹㡡愶㌶㜰慥ㄲ㍣㔴昱㐱㜰愵〱㜷㔴散〰㘵慣㥤攱搵㜰㈲ㅦ愷㠲ち㥣愱〹㉡搱捤〵㍣〶昹挸㤴㑡㝦㌵敤㕥㘹慤慣㝥愴㌹摢愶㥡㘹㥤昸搷挶づㅢ〳愹愴㥦ㅦ愴㑦㥡摥㘰㥥挳㐶〹捤晡慢㕤攳㈹㕣愸㥢㉢扦㠸㉢㑦挵㙤捡〸摥っ㐸㌰昰慣愷㝢攷搳㜸㑣戵戸挲挴昳㐶㥥挱搱㤰㌷攱愰㈰㍥㈳㤴攸㐱㔵挴㐲㍤挴㥥搹挶㈷㈳ㅣ〵㉣㔳づ㤱晣戹捥ㄲ㑥攱っ愵㠲㠷ㄳ㔳㠰摥㥤昵㈴㉥㥢昳㈴戱㐲㠹搳㔲搹㡦㈲㝢㤵昱㐵㡣ㅢ〷㌲ㅥ挷戳㝦㜷ㄱ㔷㔲挲搸㈹㜵捣攷㑡㜹ㅢ㤳㤶昴㕢〸㠵昸㑤㜹㌷㈴㐶㐱愴㐶㉡㌹挲摢攳㜹㈱〲〷㤱扤摣㜵愷昱攲捣慡㌱㉡ㅣ㕢ㄱ昶ㄴ散㉢㑡昰捣挷㠹㤶㤰慣〴戶ㅢ愳㐳㈱ㄷ捦挲昳ㄷ戶挴挹攸㉤㍣敥搸ㅣ㉦㘸㕣慤扢摥㡥搷㈶㉢昶㝡换㙦愱戱昱㤰攳ㅤ㙣㜴搲挱戶㑤挵挵㍥〸㥤ㄹ〲ㅣ敡摡㘱㔴㄰㥦ㅢ挲搴㘳扥㉢攵〵ㅣㅣ㝦㘵㐵㈰〸晡㤶㐱㠶㙤㌶攳㡣ㄵㅦ挱㠶㤴攷㌱㡡㕡㍦㠸戱ち㌷捣㤹挴㔲㝥挵㙥慥摣㉤搶㕣㈹㐰攲㈳㐶㔵㕦㕦㜸っ㍦㐰挱ㄶ搷摡㙤㘴㑡〸攵ㄱ戴戶昲㈶愸㡦㈶㜵㘹㜶㍣㔶㤰㔹㕣〰捣攲㑣㍣㈳㑥搵搴攲〱㙥挲㐰搷㜸㡥㉦戶㜲㕣㌱㑣ㅢ扡㠸㐷㐲ㄱ挳㜸㘰㕡攵敦昲捥つ㘱ㅦ昷㝤ㅦ㥦㜶㔳㈷搲敥㈰㐲㝡㉣愶捥慡攷昱㥥㑦ち㙦ㄳ㡦搰㔹晣晣㌰攵搲㥤扦ㄴ㥥㉣㡣搶㌷㥥搲㝣㙦摦㤲搱㠸扥㈰㠲晤愷戵㔱㜵㠷㙦㘷㉣㥣昳挷扤慢〲っㄹ㐸ㅣ㥦㠰昶㍢㙣ㄲ挹㍦㈵戸捦㉦ㅡ摦㠳昰㠵㑦㌹ㅥ㐵㌴ㄳ敢㜱㌲晥づ㙦㠷㠱㝤戵〳挷㈸㥣㝢搹㝤ㅤ愶㈲摣ㄶ㐹㠱づ㈳捦摡㥤慣㥢㠱づ㠵戳㕡㤸㤸㘶㌲㠵㌸捦捡攵㘰ㄲ捣戹〳ㅤ㈶摥攲ㄶ㘰〴㜲摢㉡㠳摢ㅤ㠹㍥愴㜴攸㔹户㠰㙦㈳㐶㔱搸㝦捡〱㐱ㅥ扦捦㔲㤷摢㘸㈹ㄱ㝥ぢ㑥㈶慥㡢攰收挱㥢㌷愴挹㤱㕣㡥搴㜲昵㘳晡㠹㑣㌵㄰愳㠶戴昱换ㄱ摡攴扣㍣㉤敢戶㌹㜵㕡ㅢㅥ戲㜵搱昸㐷昰〸摡ㄲ㘷愹愰敤㌷㌸ぢ㙢㈰攸〶挷攳㝣㑤㉥〶㐵昹㘰愸㤰㌷ㄶ㐲〲昱换㤳㌳㜰㤱〰㜱㍤㠲㘴捤㍥戴昱晥㔱昶㈸㈶㐳攱戸っ㠲扣㐴昴慦ㄷ挸づㅣ〴挱搰づ㈳扤㉡〲㥢㉥〶扤戹㑤㉥愸㡡挴攷㥥挶攷扣敥搰敡㔵㐱㤰〹㐰ㄹ㜱搵㐱愳挳㝢㐱搰㙤攷挲愹ㄷ挱っ〲ㄳつ〶ㅥ㔳ㄳ〳㈶ㄶ㑣ㅣ㤸㈱㘰㠶㠲ㄹ〶㘶㌸㤸ㄱ㘰㐶㠲ㄹ〵〶㌷㤴㑣㌳ㅡ捣ㄸ㌰〹㘰挰㉢㌴㝡㌰〶㌰㐹㘰㤲挱愴㠰㌱㠲㐹〵㤳〶㈶ㅤ㑣〶㤸㑣㌰㔹㘰戲挱攴㠰挹〵㌳ㄶ㑣ㅥ㤸㝣㌰㈶㌰攳挰ㄴ㠰ㄹて㘶〲㤸㠹㘰㈶㠱㤹っ㘶ち㤸愹㘰愶㠱㌱㠳㜹〹㡣〵㡣ㄵ㡣つ㡣ㅤっ〳挶〱愶㄰㑣ㄱㄸㄶ捣㜴㌰挵㘰㥣㘰㕣㘰摣㘰㌸㙣〲挷㈰昱㡤挱㜱〹㌶慤㕢㄰扣㌹〸愱㥡ㄹ搸〴晡㈰㘸㝡㠸㠹㉡ㅥ㡥ㄳ㥤㑥㙤㙢㔴ㄳ㔴〲㥣㙡户攴愴㠲㙣昶㜷㐶㠶攳ぢ㔹㡢搹㔴㤰㙣㌲㘲〷昷攰愴㤳㜵攲㘰㘹挶㜳㜱㠷愷㉣㍡㔶㔷攱ㄴ㉡搰ㄲㄲ慡㔶慣摡扤㌵敡㕣㜱㑥捤扡㙥ㄳ㔲ぢ晢㌴愲ㅡ㈲㜴㕣〸㐲昰敡愱㌶摥㠸㔸㠱昷㝣ㄲ〵㤷㌷㈲㉥㈴㠵㈶ㄵ㑦㡣慦敡ㄳ㤲搳戴㝥㕤挱昵愳㘷捥愲㙡㈲㥣㥦㜵昴攳㜹㈱捦ㅡ摦捤摣搵㘷摤搲愷㍥㐴搰㠷ㅥ搱㌴㐰昳㤲收㑢㤱收ㄱ攱ㄳ攱愳㡢㤷ㄳㄲ㡣㕢晤愳㑣㤱昶ㅦ捤〸㍡㈲㡤昴㡡ㄴ㘹㌶ㄱ㐲㌳㙤㡡攷ㄸ㑤搲㠲㈹〷昹㍤戳㘶㌴㈲攸捤㌴搲㑣㈹㔲㈵ㄱ㕥㌹ㄵ戴敥㑡㠵㙦敡㥢㝢㡦扣㌴㘴㝢搸㈵〴㉥㐱㈳㤵㐹㤱㑡㠹愰㌷㠴㡥㕦昰攷攰捣愶㠷㐱攵㜱㤵搶㌸〴㝥㐵㈳昱㔲愴ㄹ㐴搸昹昴戵昷戳㈶昷搶扦挱捥㍤㘰㍡搹ㄴ㡥挰㌹㘹㈴户ㄴ挹㐵㠴摣敦慥扣愶㔹戲㌱㘳捤慢㡤㜵愳㝢晢㥦㐱㐳㈴㐸搳愵㐸㉣ㄱ晥昳挸敡㕥㠱㠷ㄶ愶㌴ㅡ㥢㐷捦㝦㘹ㄶ㡢㈰㑣搰敡攴㤰㈲㌱㐴愸ㅢ㌶改攲昶〷㠲㜱㌵扡摤攴㕦㝦㐴㠳㈰搶搰㐸㔶㈹㤲㠵〸搷㙡扦摣㘲㈹ㄹ㤵扤敦挱昱㍥㝦昰㕤戲〵㐱挰愲㤱愶㐹㤱愶ㄲ愱攵愳晣敦㍦ㅤ昲㑥㑡敤搶㉤〳〲㜷㠴㔵㈰㠸㝡㌴搲㈴㈹搲㐴㈲㝣㔳㝢收挶㕢㝤戳搲慡愶㍡㉤㘵㡡㜹㕡〴愱㤳㐶㉡㤰㈲㡤㈳挲晥㡦ㅢ敥〷㑤晡㝢挶戶攵㠷㈶㠴〴捤㑥㐰㄰㝦㘹愴㍣㈹搲㔸㈲㝣㜶敡扣㘱昶晥㑦㔲㜶㍦㥤㌳挹ㅥㅢ㥢㠹㈰㠸搳㐸搹㔲愴㉣㈲戰摦㙥搸昸㠷㜷收㘷扦㝥㙡㤹晡搶㉤㝥〹㠲㤱㠰㐶㑡㤷㈲愵ㄱ攱挷愵戳ㅡちづ昸收散㌶慤慤㡤摦㔵昳㈲㠲攱㠴㐶㑡㤱㈲㈵ㄳ㈱㜸㘹㜰昳昹扢扡㤴晡㙤㝦㤶㕤っ昶㠴愲〴〹㤲㕥㡡㤴㐸㠴〹㐷昷搵昷㡣晤扢㝥㔵㤷收扦愶㤶挹㘳ㄱっ㙣戴㍡㡤㤶㈲挵ㄳ㘱㑤㜳晥戶㥡敤㜹愹昳㌳㝥㥣昳户㠰慢昳㄰㡣㡥㌴搲〸㈹搲㜰㈲ㅣ㝥㌰㉣户昴㑦㐷つ㙦慥㕦㘶㕥挱扤晣㄰挱㄰㑢㈳つ㤱㈲挵ㄱ㘱晢搹㈸㔵捦摡㍣晤收〸昴㍦捦㥦扢㍤ㄱ挱㌸㑤㈳つ㤶㈲㐵ㄳ㐱晦ㅡ㥢戰改昹愱ㄹ㙦っ扤摡戰散搸搸扦㈲ㄸ散㘹㈴㥤ㄴ㈹㡡〸愷挷摤㌸戱㜰㡤㈷㙢搹戵㤷㥢㡤换㈷ㅤ㐵㤰㌱搰㐸㉦㐸㤱挲㠹㤰㘹晤慦昳ㅦっ㡡㑡慡㘲扡ㅤ㝡昹愶㍡ㄶ㐱摡㐱㈳つ㤰㈲昵㈷㐲㔱挵搶㜷慦收㤴ㄸ戶㙦改㕥搳ㄴ㍢敢ㄴ㠲摣㠵㐶敡㉢㐵敡㐳㠴㕤㕤挲捡捦㝥㄰㙤搸晡愷摡〵昷挲㘵晤ㄱ㈴㐰㌴㔲㙦㈹㔲㉦㈲㜸扥慤㍤㥥散户㉡戳晡㍢晥挲㡡㌹㈳ㄷ㈳挸愲㘸愴ㅥ㔲愴㌰㈲捣㜵愵㉣㔹㍣㔱㥦晣晢敦㝡愷㍢ㄶ愷㝤㠲㈰ㄵ愳㤱扡㐹㤱㐲㠹挰㉦㍦㉤ㅦ㔸㝤㌶㙤㔱戹扣戰敥摢敢㘷ㄱ攴㜳㌴㔲戰ㄴ改㘹㈲挴扣㤲㕢愲ㅢ㍡摢戸㘱捡挱㐵㝢㈷晦昷㈵〴㐹㈱㡤搴㐵㡡ㄴ㐸㠴つ㕢㔵㝦扣㝣扢㘷晡㝦㉣㌸戱㜴㔹改挰㐰〴㤹㈵㡤攴㐷ち㜴㥡〷㙡㠸㈰㘸㍦ㅦ㌹㝢攳㙥攳慢〳㜲㕦㍢搸晦㉢ㄹ㠲昴㤴㐶㔲㐹搵㐹㐹㠴攵搵㜷ㄵ㌳慦ㄷ㈷搷㑥搹ㄸ㥤㉥㘸㈷㈰挸㜱㘹㈴戹ㄴ〹ㄱ愱㝥㜶㉦㜶晤戳㡢㔲㜶㝣㕥戴㔲㤰敤㑢㐶㤰㈸搳㐸㍦晤攴㥤攵㜶捡改㕡㠸昰㐶挴愴㑤敢㍥昵搱慦捣慦㍣㔱㍤㈰㜸〷㠲㙣㥢㐶扡㉦㐵晡㠱〸㘷慡て㤶摦㌵㙦㑢㕥昶㑦㑤㐳挶攴愶㡦㄰愴散㌴搲ㅤ㈹搲敤搶㍡㌵㜷摢㙢摤㍣㉢愵慡晣敡挹㠴〳昷ㅥ㈲挸晢㘹愴㕢㔲愴㙦㠹㔰㙣敤晥捥㥥户昷愵搶㌵㔶捦昴㈹扥㘵㐳㌰㜹愰㤱㙥㐸㤱慥ㄳ㈱戴敦昷㌳㝤㔳㡤㔹㙦㘵挴搴愵㑥攸㍦〱ㄵ㐸㤰晥㈱㐵扡㑡〴㍥敡挶㥣㤶散摦㈷散捣㜰㕡㈲敦㌴㍥㐴㌰㡤愱搵改戲ㄴ改ㄲㄱ扡㕣晢㘱㜷戰敦摦㜲昶㔸捦扤ㅥ晤捤搶㉢〸收㐲㌴搲㔷㔲愴㡢㐴㜸㑦㜶敥挴愷戹㤷昵㔵ㅢ㈳晦㜹摢扡搹㠴㘰㐲㐵㈳㝤㈹㐵㍡㐷㠴戰晢㕦昰ㄵ㜳ㄷ㈵捤㙤昹戲搴㍤㈷挹㡡㘰㔶㐶㈳㝤㈱㐵㍡㐳㠴昷㍦㍥戹㜸戶戵㝦昲收愸ㅥ㌵昶〶晢㘵〴㔳㍢ㅡ改㌳㈹㔲㌳ㄱ敥㤵扤扡㕥㍢㘰㐶捡捡敦㑢〳㈷㌷慥㕣㠹㘰㝥㐸㈳㥤㤲㈲㥤㈴挲㌷㤵㡤㙢㉦〴㌶㘴扥㜱晤挱昵㥤摦ㄴ㕣㐷㌰挹愴㤱㡥㑢㤱㡥ㄱ㘱攸挹㘳㜹ㅢ愷摥㐹㕥㝣㑡挹㉦㍦戸㘹ㄵ㠲㤹㉡㡤昴ㄷ㈹搲㔱㈲㠴てㅢ搷㌲散㜰㥤㘱挵昰㉢攷晦ㄲ慡敤㠷㘰扡㑢㈳㝤㈸㐵㍡㑣㠴ㄷ㐶㔷扣昲收愱㥦ㄲ慢ㄶ㠴㥤㌳㜲㍢㠲搰㑢ㄲ愴て愴㐸㠷㠸㜰㙣攸㠶㔱挷挳㘶㘵敤愹晢㙡挱㤵扢戱摢ㄱ㑣扣㘹㜵㍡㈸㐵㝡㡦〸昷㔳ㄲ㌶㔴て昶愴搵㐷㝣ㅤ㜷戳㝡晣㔸〴戳㜷ㅡ改㠰ㄴ改㙤㈲搴摣搸敦㙢㝤晤ㅦ〹㑢㐷ㅥ攱戶敦扤昳っ㠲㈵〰ㅡ愹㐹㡡戴㥦〸〱挹扤昲ㄴ晥㤹改晢㐲㉥昵慡㉡扢㜷ㄷ挱㍡〲㡤戴㐷㡡戴㥢〸攵㔳ㄷㅦ摡㝦㍡㈲慢㍥㙢摢㉥㜴㈲扥ㅣ挱㘲〴㡤戴㔳㡡戴㠳〸晤晡摤扣㈵㕢搱㍤㝤攱敤搳㕣昷愴㠵㥦㈳㔸搱愰㤱戶㑡㤱ㅡ㠸㜰㔳㔱扦㜱挱改戴戴㕤攷敡ㅢ挲慡戵㥢㄰㉣㡢搰㐸㜵㔲愴户㠸㜰愶㜷㑣㔳㘴㐱㔶挲㥢㌵慢摦摢㕤㌴㘰ㅡ㠲戵ㄵㅡ㘹㤳ㄴ㘹㈳ㄱ戸攵昷ㄷ㕤戸晡㠵㘱戳敤挰戹〹㠳收㌵㈳㔸愰愱㤱㌶㐸㤱搶ㄳ㘱昲愸㜸敤㜲挷㑤攳慢㌳㐲户摣㕣敤ㄸ㡤㘰㤵㠷㐶㝡㕤㡡戴㤶〸愸攵戳㘹挷㐳ㅥ㈴慥慦㐱㠷扥扥戰㌲ㅤ挱㔲ㄱ㡤戴㕡㡡戴㡡〸ㄹ晡㝡㜷㤷晤㐷搳摥敤晢㥥慢攱〷搷㝣〴敢㑤㌴搲㑡㈹㔲㉤ㄱ㤲攳㙢㉥㠴㍦㝦㉦慤敡搹扡戳捤㘳扡ㅥ㐵戰㘸㐵㈳㉤㈷〵ち愲㠶㝦㘹攲挳搳ㅢ搶ㅤ㤹昶㡥㍡㔲㠹㤶ㄱ㐱扤㘲㜱挵㠸㜱㍦㘶㌷㝥㌵挰晦晤昲㤶〴〴㉢㕦㌴㔲㡤ㄴ㘹㌱ㄱ〶㔶㘸㥦㔹ㅥ㜲㌹㜳攷昶戵晢㕢搶㐴慥㐱戰㝣㐶㈳㉤㈴〵㍡㘵㘲搵㐴㐸㍥ㄷ㝦㜱捡愸愲戴愶挹㠱㠵〷㤶扥㥤ㅤ搴扡昰愶㠴戵戶㤱戴㡦づ㥤扥㥤㐷㜴晣㡦ち挹昸㍦ㅥ㔴捡㜱㜹ㅦ晣㥤㔶㈹㉥㥡㉢攴㈳ㅥ㡦搵晡攱㐷㠵㜱捡㉡㕣敢晦〳〷㘱㐶晢敦㌶捦攱㌳㥡搹昸扣ㄲ㑣挷㙦㌷昰愹㌹〵㥥愳挳户㜱㝦晦㄰㝣搲戴昶㐰㐲㑢捣搴㐴晦晦〵㥣㤷挳愰 | B30: 㜸〱敤㕣㕢㡣㈴㔵ㄹ敥慡改敡改敡㤹搹ㄹ㜶㜶㠱攵㍡摣㉦戳㘹㜶昶挲㐵㕣㤷戹散つ昶㌲扢㌳扢㐸㄰㥢㥡敥㔳㌳戵摢㔵㍤㔴㔵捦敥挰㉡㡢㈲㠸㘲っ昸愰㈰㉡㈱㠶攸㡢〶ㅦ〸〸㍥㤸ㄸ㌵〶㡣て挴挴〷ㄳ㈴㐶ㅦ㌴㘶ㄳ㕦㜸㈰挱敦㍢㔵搵㕤摤㍤㕤㌳㌴愰㠳㤹摡敤㝦㑦㥤晢㌹晦昵晣晦愹㑤㈹愹㔴敡㝤㍣晣㤷㑦㥡㠹㑢愶ㄶ㍤㕦搸昹昱㑡戹㉣㡡扥㔵㜱扣晣愸敢ㅡ㡢〷㉣捦敦㐲㠵㑣挱㐲戹愷ㄵ㍣敢㐱㤱㉤㉣〸搷㐳㈵㉤㤵捡㘶㜵ㄵ攵散㠴扦㠱攸㐵㘷慢摥㌴挰昴昸搸攱㤹ㄳ攸㜵捡慦戸㘲昳搰昱愰敤捥㤱㤱晣㐸㝥摢昶㙤㌷攷户㙣ㅥㅡ慦㤶晤慡㉢㜶㍡愲敡扢㐶㜹昳搰㘴㜵愶㙣ㄵ敦ㄲ㡢搳㤵㤳挲搹㈹㘶戶㙣㥢㌱戶摦㍡戲㝤挷づ昳戶摢㙥敤挵搰愹㐳攳㘳㤳慥㌰扤㡦愸㑦㡤㔳摥㍥㈱㡡ㄶ搷㈶㠴㙢㌹戳昹昱㌱晣㡤捤ㅦ㙦户攴愷收㠴昰㌹戴㜰㠵㔳ㄴ㥥㡥㠶㍤昶愸攷㔵敤㜹㙥㥥㙥敦挱㔲㡢㠶攷㙢昶戸㈸㤷㜵㍢敡㌵㙢ㅦ挶摥㤵㡤挵㕥㝢㑡㌸㥥攵㕢ぢ㤶扦㤸戱愷搱㔱愹捦㍥收㠹愳㠶㌳㉢づㄹ戶搰散扤㔵慢㤴づ㥥㔴搷㜵㔱ㄷ昱㠹挹攵攷㐷㍤㝢㝣捥㜰攵㡣㍣㙥㑣㐲摤㍤㙥戱戱敥㔵敤晢攵搴攵〸散昳㥡昶昵㔰㜲摣㜰㙢㌵㠷摢搷っㄷ摦㌸㠳㥢摡搷㡦敤㔱㘳㥢ㅢ摡户㤱㕢搹㔸㕢改〹改㕢敥㈸ㄶ愳㘷〸扡〹戲〴㐴愰㥥㈳攸㈱攸〵㔰搲晦〶㤷挴ㅢ戲㐸㉤ㄸ㙡㘱㐶㉤ㄴ搵㐲㐹㉤〸戵㘰慡㠵㔹戵㌰愷ㄶ㉣戵㜰㐲㉤㥣㐴㥤攸挹㜶㜷慢攱㜳攷㑢㙦㕤昲摥㌳㘷㜶扦昶搳扤扦㝥㜲昷愶㠷㝡搷愱搲㤱㜰㔲ㄳ慥㜱ち愴㔶愷攲慤昹㉤晣戳㍣㔷㠰㈹捣ㅤ收㉤收挸㐸㘹挷ㄶ㘳㥢愱㜱㔹〹挸㙦㈰㤴〱搴敤㌵敦戶㥣㔲攵㤴挴摤㈵㘳㠶㈷敡ㅢ㌷ㅣ㤶㡤㔵慡㑥挹扢㜸改挲㈹摦昰挵㐵捤㘵昵㑥㕡㥡㑤㠱慤㠴㈷挷扢慣戹搹㜱愳㕣ㄵ愳愷慤愰昸搲愶㘲㝢搲慤捣戴㉦摤攳㡡〷㙡愵㉤㌳ㅡ㠵㔰㕢㤰㝤户慣㌲㈸ち收㌵㌴㍥㔷昱㠴㈳愷㌷㙣㑦㕡挵㤳挲㥤ㄲㄴ㠹愲㈴㤷扡㤱㐵㈱搷てㅦ㜶戰㔰㜰㙢改捡㜸慥戹晢戴て㘶ㄶ㈵捣㜷㕥戸晥攲戴㌱㔳ㄶ攷㌷㔴〹挶㐴挱愶㠶散㍤㤵㘲搵ㅢ慦㌸扥㕢㈹㌷㤶㡣㤶ㄶっ㐸㥡搲挱㑡㐹愴搳㈹㈹ㄴ㈰㜰扢扡ㄴ㈵㜵㘳㝢㕥㤰㠸㠸愱㤸㡣㝣㘱㈳搹攵㡦㘲㜵㔸㐵㔹㤰㈶搵慢㤷改㡣昳㤵㌲㈶㠱〳㘳㙢愲晥攰愰搷㉦搳㙤つ㜳ㅦ㙦㘵㔵ㅤっ㔷扦㝢㐱㌸晥㍥挳㈹㤵㠵㥢愸晤ㄴ捥㐸敦〷搰捥㐱㈰戴摤㍤慡㍡攵戴戲愸㥤戲㑡晥㕣㘶㑥㔸戳㜳㍥昲愰㈱戳㔹㙥㙤换愳㥦㠷㉣㝤㍤挱㈰㐰㉥㤷捡㙣㘰愵㑣づ㑦㑡愳㜴㑡攰攵〶㐱捥㜶つ扣摣㙢敥戱捡扥〸㠴㜲扦〹㡣〴㕡㑤愲慦㡦㈴敡ㅡ挵㐰㘱㙣㌰挷㐱愵㠶攵昸㡢㜵扥㙤攱㤲㠰㠸搶㘴挱慡㤳〵ㄴ〵㡤昲㈰㠱搷㐰㌴㑤搲㈰戹㜲㡣㠸挸〶〹㥡ㅤ㍤㌷ㄲㄹ敢㈷挸〸搴㡦ㄳ㈱㙢㙦㘹㉦㈳㐸散慤㐴捡㐶㙤昹㜱㑤㥡㉤㘵换〷搲㙣㈳㌶㑥㍦㥦攰〲㠲ぢ〹㌶〱㈸㝦㠳㠴愳㤴㐳扡昱搱㉦挶扢㝥〹挱愵〰㤰㑦㍡㘵㑥㈸慡㘸㐳慤挴㡥㘴扤㍥搸挹搲㈸づ㐴ㄱ㉤攳㥡㥤搹㘷㑢㐴㠷㔶攷敡搰戵㘹愹㘳慦㙤㑦㥢昱攵㤰㈲ㄳ慡挶搷扡㑣搵昸㐶戰㙡㠷㝡敢㜲㌴搵㠷〸慥〰〸ㄴぢ㡤摤㤵㔹昳㌴㈷㍦ㄱ㈶㔱㘰〸㜵愸摣㐳㈲愶昹㥦㈰攰㕡㡥㉥㙢昶㌳㑤挱㘱昳ㄳ㙦㍦㙦㙥捦摢㈱搲㥢㜴收㥡捥愱慦攸〳㕡搰㔷㠲扤㤴㍦户搵㉦㔷愳㔸扦㠶攰㕡㠰㈶晤挲㤳昷〷昵ㄲ㐸㤳搸㡥㘱㙥㍤㍤㉥搲挲㥤㕥㥣ㄷ㔲晢昴㥡搳㠶㍢㉢㝣㜸㉦昶㑦挰づ慥戸慥㈸攳㐰㕢㤲ㄹ㍣扢㕣搰㤸改敤㜱㉢㌶昳搷散㘳敦ㄳ愱ㄸ搲㘹戵㉢搵㘴ㅦ㈷搸㤹㌱㝦㔳㡣㜲愸㝦户戵ㄷㄲ戱㐶㡤攴挵㜶挹㘷换㌵㐹搲㠱㈴戹ㅥ摢慡摦〰〰㈹愱晣戱慤㐴ㄹ㘶戵捤戲㕡愳戵㑡敦㕥挲挹愴挹㝦搸㈲㐷㝡〲㘷敤ㄸ㝣〷㕥㥦㍤㘵搹㌵㘱搱㘳㑦ち户〸扦㠲㔵ㄶ戹挰㈵㑢㔱戳㈶㉢㍥㈱戲愲慢慢攵㉣㥤攰㕢㤳㜴搲㈴㈵ㄲ戹㍤戱㌰攱ㅣ㕥㈷㉡扡㈰㈹㔴ㄲ摣㐲㌵〹㐴捡㘳摤㌵ㄱ搳㠱㠸挹㘳攳昴㥢〸戶㄰㡣〰㘸扦㠷愴㔹改挶㌳ㄴ搶扤㐰㜷㜶愱㤰捡ㄲつ搲㍤昸㘶㕢㘱戵㥤挳散㈰戸ㄹ愰挹晣愱昳㌱㠱㄰㈵捡㘳㠴㐸㙢㐹㌷㡦㕢攲ㄴ㘹㘰㥤㠹愰搲㜸搵昳㉢㌶愳㑡㝤收㐴攵㔰挵㥦戰扣㜹㐴愱〶捤㌰㜱昷㥣㜰㐰㕤㉥㙣㥦愶扣捡晣扣㈸改收㔴愵ち搱戶㝦㘲㌵ㅣ捡戱㍥搸㤲昲㕣慥㉡㜸㍡㍢ㅢ愳ぢ㐵㥥㠸攱㙢愵㈷㜶㐵㥥㙦ㅥ晡晡敢㍢㍡㙤昹㘵搱㘳〶㑣挷㜴搶挴㉥㈲㙡㔰敡㌶愷攷㕣㈱㈶晡捣扤慥㔵㉡㕢㡥㈰㌲㘰㘳㌲㔰㜷㐰捣㈲㐲㌰㔹㘱晣慦攲昴㤹搳慥攱㜸昳〶㠳㠹㡢敢ㅢ摥㘴㐸㐴㌳挷㉣挷挳㌰ㄲ㡢㑣昷㥢㔳㜳㤵㔳㠸搶㔶㙤㘷慦㌱敦慤ち慣㤰攸㠳㐷愲㐶㔱ㄵ㔵㔵戲㙡戶㔳晣昰㐰㥥㑡㙤挵㉦㑤㈰㜱㤵搲攸㉦㑦搰摥戴敢挳昸っ敤㜴捥愹ㄷ㤱愳㕡㘶㔷愲ㄴ㈶愷敡户戲捤㙤〰㜷敥㍤戶扦ㅥ㤵晢㔰昱㙡㡤ㅥ晥〴ㄹ㉦挹愲ㄶ〴愱㝦㙥㕤㐰㉡捣㈳攵㠰〳㠱㜱扥㌵㤳㕦捥㤴㜵㐸㝤敢敡挹㍤㠸㈲昵㥡〷㡣ㄹ㔱㐶㉣摡㌶晣㜵挱ぢ捤㔸摢㈸㝢㘱搹㜸挵戶つ㤲ㄶ挹㜲慡㘸㤰㠲㐷慢㝥攵愰攵攸㈶㠰愴扦㌰换㌸㡤㉣攳戴捣敡㌵㡦㌲㉣㈸搳散慢㌲㙢戸㤶㍦㘷㕢挵㉣㕦ㄸ扡㕢ㄵ㌴〹㈶愷攴㡤㥥㐸㘶っ㌵㔹昳挷㘰戲㜹㜹愰㍢て㌹捡慤㈳晡㐱戹慡㤲挱ㅦ愵㐳挷ㄲ〴㡣昴㤲敡户愳㌷㑤摥㡣㠰挸㤱捦戹攸晥挵戹㠷㤱ㄳ昸攵㠸昵〴ㄲ㠱㐷㌰㈶攴改摥捥㤸挷ㅣ换〷昶㠸戱㍤㤶㍦攱〱攵〰㐸捡攳敤㐵ㄲ慢戱㐶挳㌵慤㜰㜹㙢㔱㠳㥡戸慣戵㍣慥㌷慥㕥愲㌸搰㈸㌱㐵戲㕣㈵愹㔹㤶㤸攳㙡㔲㌵㡡㔴摣㤱戶㔱㤲摣愶昵㝤愷ㄴ昹㄰㡡㐹搲㑣㑡摦㈹〹〵㐱㕥㔲〷㜴ㄴ晤昵挹攴ㄱ㡢搶搰〶挸㔱㑦〵㜹㝤㘱㌸㜰㍦慥㥣㤴㐴㉥㝣〳㝦慦ぢ㤳㠷慢㝥㐳㠹㜱㝡㌰㉣ㄹ㉤㤷て㍢戰ㄲ㡡㠶㕢㕡㈵㉣㡤戵〵ㅡ㐶㜲㘷愷摡㍦搸摥ㄸ㈳㠶㙣挸㤰㐸㠲ㅦㄸ㙣〸收㡡㐵㔳㘹㥤昵㜱慢㙢搹㔹扥ㅤㄴ㠶㈳㌱㌰攵㤷㈶挴㠲㌴挳敡㤶晣愰㙣㔰㍢㉤㑡㌹慡㥢愳㌳ㅥ㔴扡㑦㌹ㅥ愶㈴㠳敢收㔱扡愵㜰㠱〱㘲㌷㑣㑤ㄶ㝤㠴㜵㙢ㅤ昰㘴戰㝡戰㠳ㅤ〹挲㈶戴捥㈸㐱㌳〹㠴摢戸〸昲㑥㠷ㄸ㠵㈰㌵攵昳慦㕤捡戳捦昰昹昱慥㔴㤴〸㤹㠸愱慥〴敢〱挸㡤㐷㈵挹㐵㠳㔱戰㍣㤰㙣㔲㘸昵㐶㜹㌴㌱晡㘸昲戹㍥㙥昰㌰㡥搵㑦戶㈹攳㡥㥢㙦㐱㥢㤶ㄷ搷㤹晢㥤㘲戹㕡ㄲ㔲ㄵ㐷戲㕡㙡攴㔵㠱㉦㜹晤㉦攰愶㠴㝤〹㌷㘵㍦㡥㔲㕣㌲㤱搴戹摤慤㝦〶捤愵㤰㐳ㅦ㠱㙣㘳昰㌱挱㉤㈷㠳㘱㉤㜷ㄴ㘸ㅦ慥慦㕦㕥㤰ㄷ攷㈰搲㕡戲㈸换づ攰㉥㕥㉤㠲㉣戹㉤㔶敤㐰攵㐰㠵㌶㝢㉣㙢㥦ㄵ㘴慤ちㅣ㘱㥤㠱挰换㘴㘰㡣㜴挸ㅤ散㈴㜵㉥㡣散㥥㝢㔸扥愶捥敤ち㡤て㠵昱㕤㥥㠲㔲搸㔵㌰ㄲつ㙥戵㙥㜵㉢㡣晣搲昲搶敦〰㔰ㄸ〲愶㐱㡢㥡㠱㠱㌳㠶昴昲〶づ㠳㤱〹搱搱㜸㈰㤵㌱捡㐱㌸散㠱㌴㜰ㄳて搲搳ㄵ㈸㈱㝦㠳扣ㄴㄶ摤㑢ㅣ戶㜱〴慡戸攷㌷㘵㑥ㅡ㍥慥扥㌸㥢㥡戲㐷㑢㈵㥡扢昰捦慤ち慣攲摡㐶㘰㡥㙥㘸扡㤰㈵搷㐴晢敥慡愶㠲昰愲攰搶㠹晣㍥挳㉦捥㑤昹㡢挱愵慤㑥㐹㐲晢〵晣ㄱ㑢㡥㑥㥢㌹敤昰ㄲ敡〲昷㍥㜷搲愹㥣㜲攴扣㌴㡦㌷晥㘸挵敡摤摤㥣㘴㉥昵㍥晥挸㐷㑤㘹慦愳挷㤵㑣㥢ㅤ搴ㅤ㈴散㐷㍥㠱㌴ㄸ㐲㍡㠱㑥㘰扢搷㙥っ㤰㑥㌶㌴搱㠹ㄴ〴㙢㠴攲捣㝥㘴㠴愲扣〶戴㤲㔸㠲㈳㌹昶晣㐵戰扥昲㜳攴㄰攱㜸て挵㠸㜶〵㔲〹愸㤳㠲㍣扣摥挱换㈰晦㍦㔸㡡戸㜹㐹㜶晡㉦㌰戳昲㙡㌳㡡㉥㈳㡡㕥㘹㐵ㄱ〳戱ㅦ㈸攴捤搹慦ㅤ㌵㍦昶㙢扤晦挳愳收㥤挰㌰ㅦ㘹㡤㈱愸挶㘰㝣捤ㄸ攸㙡㌱〶慥㐱戱㌴〶敥㘲ㅢ挶敢〳㘳㈰昴㜶ㅣ㐴挶昲挶〰愳㜸〹㈶㕦㉣愸ㅡ㜳㘰昰慣㜵扥㑤㑦搸㍥㕣慦ㄵㅥ㈲昷㔰㑦摥㌸㝣㑦ㄷ戴㘶㑦ㅡ慥㘱㙦㤲昹㝢㕤〱戵攵㑥攳扥戶㙣挲ㄶㄷ㉤㔹㈲ㅢ㉤攱㤵㠸晣改㙢㥥㤳㤵摤㔲〷愶㠲㈷㜰搴㉢㔹㈵昳㈱㝣㈲ち㑦〸愹㠷㌶晣㘴敦㕦ㅥ㝣㜴ㄷ敦愵㠵戴慡㌱㄰摣㐹㜰㥥㤶〳挲户戱㉢㈱ㅢ昹昹捤㐱㝣㠸㘴捤㤷挵㤸攱㑡㝢挷搳敤㈸ㄹ㄰㕥㡣㌰〳攲㕢つ挶㈴㙥㌸〴挶㘴扥挹戱㈹㍦㕦㤲捥挰㝣㙣攲搲㝢ㄷ〵〸㤵戶㉡慢㐳扢㔲晢ㄹ㤴捥〷㥣㐸愳㍤挸昳㈵ㅦ㐵㜹愹㔹慢敤愰㔶㤳㘶愲㌲㡣ㅡ㤱㤴㐲愴㠱ㄴㄲ㍦戲㌰昴㉦愵搴㈴ㄲ㕡ㅥ㈰㈱㠶搶ㅣ捣攵挹㝦㑤〸㠸摡昵扥づ㍦㔵挱㉥〲㡢㤱搷扤搳戳㉢慤捥㐸㌵㌱㈸㉢㑦ㅦ㐷㤰㤰挷ㄴ㘶㌰㑡㉢㜳㡦㈲ㄱ㍤摡〸㔲㉢㜶㍣㜱㤰㍥㍢〸戱〵㡣慤搹昴慡攵散摤㑥ㄵ㜷㍣愰㘷㌲㔲㘱㌸敢㤹㡤愳愷㡣挶〵㔵㜳㐱ㄶ㘱㝦㤰慣㌵敡〹㡢愰戳㥣㑤㌸㝦㈲捣挷敦㠱㔸㍥㕣敦㝡㘳㜳〹㜵㥣搳㡤〵昲〷晢敢戲〴挶挶愸攴ㄸ㐸搸ㄵ搵捡〶㤷挰愷搰㐴摡昳㡡㕥㑦㜲㉣㐵㘱㌴㍡攲慣㉥戵㐵晦㌳㑥㉤㌹㙢㥡戵ㄹ戰㙥搰晦挷㤱戱慣晥㔷ㄸ㘵㤳㈸扢㍢㑣昰㐵㘳愴㘴搹攰っ㜷〴㍥㙣㠴㘹攴ㄱ㔸㤷㐹〶户㠳搴ㄴ㍥㔱つ㡡愵〴㠷㠷㉢摤㝣〹愲搶㤶戶㙤㑦㕢〱挸㈸㤰昶㈳㠸愰戶敤㌹改搶㜳㙣收ㅥ㘴㙦㌸㘸ㄵ摤㡡㔷㌱晤愱㈹㠴㜷㠷昸㠵㤹〹㥢㘷㔴㜹戱㔹愸㕤㠵㥤攸扤ㄷ㙤づㅤ㠶挰㍥㈴晣㡦㉡敡挸ㄸ挲捡㘲ㄶ晣摡㘸㈰ㄶ㐸愲㜶昰捥㌳㡦㔴㡤㌲㍥㔰㍤っ慦愶捦慣㔵愱散〲摦㜲昳㕤っ㙥ㅤ㙥㘳摤〵捦㡦㈸攷ㄱ〶㤳㑢戸昷㍥敥㙢昳ㅥ㌴搶つ搷收戱㘶㘷摥戵㥣昶㐳攰㜴㘵愳㌴㤲っ挷攴㜷挷㌹晤㍥㐲挴㜹攸ㅤ㕤戹㉢㤶扤つ㠲捥挳捦戶改昲ㅡ㉥挳㔱戶㠲㌸昷攷搱㔴戹㠳〰㍦扤㄰㈶昸愲搰㥦㜷㍢ㄳ捦㘳㔹㘴〰愴㔳ㄹ〳愰㍤㔵㝦㝦㈹慡㔶㜸戴㈰ㄵ收㤴敦愱㥣扢ㄴ慣戶挴㍣ㅣ㌵攴ㄱ〲㘹㕤〰㐴㡦挲㈳㠴ㅣ晦㔹㌴愸㡤㍦㡢摣昶攳㝦㘷挹昱愹晣攵晡攲晤て㐴捡㐳㍦㠱㘲晤㈴㐱㤹挰〶ㄸ㠸㜴㐸㍦挵㈲㘵㑤㈶〸㈲扣扡ぢ㘹㍣㝦〸晦㝤㝢搷㥢㙦昰昹攷㉥㐵ち㐲ㄴ㌵慥㠲㠲㔰慥攲愹昸㉡收㤱摢㝥ㄵ摦㕣㙡ㄵ〳㤴㤱㥣㠹敥〲昴㜵㈹愴ㄵ戹㉡て〹㙥㈸㝦㡡㐴㈸ㄲつ戳ㄸ㈰㘲㘵摢㉡ㄲ㘸换㥤㤷㙤ㄷ㤰㠸摡づ㐴摢愳㜱㐷ㄲ扥攵㤱㠶ㄲ敦㍥搲㝤㤳〹晣慦㤹㐰㍤㘶敤搰昱扡㉡㠴〴搶挶㡦㘳摢捡昶㑣㠷㐱㝤攵㠹〸㐳晢昶㐵ㅦ㑡愹㘱㤸〹ㄴㄲ㤸愶愴㈸㙥愴昲搵愸昲㑢㉦搷扤愴㈸挰〳㌲ち㉡㤳昲㘴攵挷愳捡㕢昱ㄱ㤶慣㤳攲愵〱㍥㙦㐷㤵㐹愱戲昲㘳㔱攵㝦㙣摤㔴慢ㅣㄱ㘴搰戳㐶㙡㐹㌰㝡攵㌱㈰昶㐱㌶㑦搷㥡㐹㐵摡㘳〶搹ㄴ愱㌲㕡㕣㤶慡戴ㄷ昷㍦㕣㝣ㄲ㝤〰搷㤹㜰敢〳搲㌶昸㥦ㄱ昶攳㥡搳㠴攱ㅢ昸攲㜹〱昱㘵㔷㤷㙦㙣㥣㌱て扢挸攸㌶昷㝢㌸㕣㤵㔶ㄵ㠹挰㉥㐸〷晢扢㡣ㅦ㍥挱㠶慣敦㐷ㄴㄷ㔳㜹㙤愴㌳㉤㈲㘳㈹㘹攵搱〸戳愹戳㜵㥡搱扦〰攴㐰㕥〲㌲愱㝦ㄱ㌰㠸扤㙣㘰挶〰〵㠱攴昲戳㐸攸㡦㄰㝣〹㈰愷㤰敢㐹〷㤹㉦〳昴㐷晦㉦挵搰㠲㜴㥣愸捡㤹㘸戰㌸ㄹ改㕦㘱㠳挷〰扡攰戱㔵㐲㈲捣改㡦㈳㈷㍥㈸㈵㠸ㅣ昴〹ㄶ㝣㡤攰敢〰㌹㡤㤳㕤昱慥㜱㑤ㅤ慡戰㈷搱㔴攱㔶㐸㠱昶㡤㌰挱ㄷ敤㉣挰敤敤㡤㘶㥥㠹愳敦昸ㄱ摤㙣昸㘰㝦㌷㍥挰㕦攴愲扢昰晦㡦㘸搲挲㑦慢㥦敡慣㉦㌲㠱挶昹昰攷㘲戳㍦㐴㍦㕣㔷摤搸㘴㡦㥦挶㉦慢㘶㤴㐷昰敦㔹晣㤴〷㌰〲㐷愱捡捤挲摦㐲ㅡ㤰〵昳㘱〱㜵㤷晥ㄴ㠰㐲ㅣㄳ㑦晡搳㝣㈳㙡搹扦晥慤㌰挱ㄷ㠵㜸㍤换㐴㌹㙣ㅥつ㐸㕣换㠲㤳㑤〳ㄲ晦戲攰㐴㝣挰㙦㈳㔷㤱挸㐲愲㔱㍤ㄱ㘹㘹收㍥〳搰搷搵捦戹㔱摤愹愷㤵攲晤愵晢敦㝦户㍦㍤㜴㔱晡戳㜷昴㍥昳昶敦摥㜹晡慤捦敤晣晢㝢捦㍤昷搶㕦㥦㝥攳扤搷㘷㜶晥收㠵ㄷ㝥㜵攷て摥㜸㘷扤昹扣晡昲扢〷㥥㍦㌳㜲昲捣〳收戱ㅢ昷㥥戹攷挴㤱㤱挹昳㠶扢扡扡扢慦ㅢ晣敤㠵搷て㥣㝤攰ㄵ攵㤷㝦扡挰㔱攴㜲㌹愰〰㠸㥥〱㉥㕢㑥攳扢㐸㘰ㅡ㥣昱挷㍡つ㉥昷㉣㝥㑡㈹摣愸㌱扣㘴攱摣攰〴㘴㐱戱戱愰攷㍦㑤㌵戳㔷 | C30: 㜸〱敤㕣㕢㙣ㅣ搵ㄹ摥ㄹ敦慣㜷搶㜶㙣攲㜰〹㔷㜳扦㌸㕡攲㕣戸㤴愶挱ㄷ㜲〱㈷㌱戱ㄳ㡡㈸㕤挶扢㘷散㐹㜶㘶捤捣慣ㄳ㔳ち愱愵㔰㝡㔱〵㝤㘸愱戴㈰㔴愱昶愵㉡㝤㐰㐰改㐳愵㔶慤㉡愸晡㠰㕡昵愱ㄲ愵㔵晢㔰㔴㐵敡ぢ慡㤰攸昷㥤㤹搹㥤摤昵㡥捤〲慤愹㍣挹晥㌹㜳敥攷晣搷昳晦㘷㤲㔲㔲愹搴㝢㜸昸㉦㥦㌴ㄳ攷㑦㉦㜹扥戰昳攳㤵㜲㔹ㄴ㝤慢攲㜸昹㔱搷㌵㤶㈶㉤捦敦㐲㠵㑣挱㐲戹愷ㄵ㍣敢㍥㤱㉤㉣ち搷㐳㈵㉤㤵捡㘶㜵ㄵ攵散㠴扦㠱攸㐵㘷慢摥㌴挰捣昸搸愱搹㘳攸㜵摡慦戸㘲换搰搱愰敤慥㤱㤱晣㐸㝥晢㡥敤搷攵户㙥ㄹㅡ慦㤶晤慡㉢㜶㌹愲敡扢㐶㜹换搰㔴㜵戶㙣ㄵ㙦ㄳ㑢㌳㤵攳挲搹㈵㘶户㙥㥦㌵㜶摣㌰戲㘳攷㑥昳挶ㅢ㙦攸挵搰愹㠳攳㘳㔳慥㌰扤て愹㑦㡤㔳摥㌱㈱㡡ㄶ搷㈶㠴㙢㌹㜳昹昱㌱晣㡤捤ㅦ㙦搷攷愷攷㠵昰㌹戴㜰㠵㔳ㄴ㥥㡥㠶㍤昶愸攷㔵敤〵㙥㥥㙥敦挱㔲㡢㠶攷㙢昶戸㈸㤷㜵㍢敡㌵㙢ㅦ挲摥㤵㡤愵㕥㝢㕡㌸㥥攵㕢㡢㤶扦㤴戱㘷搰㔱愹捦㍥攲㠹挳㠶㌳㈷づㅡ戶搰散扤㔵慢㤴づ㥥㔴搷㤵㔱ㄷ昱㠹挹攵攷㐷㍤㝢㝣摥㜰攵㡣㍣㙥㑣㐲摤㍤㙥戱戱敥愵敤晢攵搴攵〸散昳昲昶昵㔰㜲搴㜰㙢㌵㠷摢搷っㄷ摦㌸㠳㙢摢搷㡦敤㔱㘳㥢慢摢户㤱㕢搹㔸㕢改〹改㕢敥㈸ㄶ愳㘷〸扡〹戲〴㐴愰㥥㈳攸㈱攸〵㔰搲晦〲㤷挴ㅢ戲㐸㉤ㄸ㙡㘱㔶㉤ㄴ搵㐲㐹㉤〸戵㘰慡㠵㌹戵㌰慦ㄶ㉣戵㜰㑣㉤ㅣ㐷㥤攸挹㜶㜷慢攱昳㤷挲㤱慢㥥戹昶㤷晢㝥㝣敢扦㈷ㅦ昸挳摢慦昴㙥㐰愵摢挳㐹㑤戸挶〹㤰㕡㥤㡡户攵户昲捦捡㕣〱愶㌰㜷㥡搷㥢㈳㈳愵㥤㕢㡤敤㠶挶㘵㈵㈰扦㠱㔰〶㔰户搷扣挳㜲㑡㤵ㄳㄲ㜷攷㡦ㄹ㥥愸㙦摣㜰㔸㌶㔶愹㍡㈵敦扣攵ぢ愷㝤挳ㄷ攷㌶㤷搵㍢㘹㘹㌶つ戶ㄲ㥥ㅣ敦挲收㘶㐷㡤㜲㔵㡣㥥戴㠲攲ぢ㥡㡡敤㈹户㌲摢扥㜴㡦㉢敥慤㤵戶捣㘸ㄴ㐲㙤㔱昶摤戲捡愰㈸㤸搷搰昸㝣挵ㄳ㡥㥣摥戰㍤㘵ㄵ㡦ぢ㜷㕡㔰㈴㡡㤲㕣敡㤹㉣ち戹㝥昸㤰㠳㠵㠲㕢㑢㤷挴㜳捤㕢㑥晡㘰㘶㔱挲㝣ㄷ㠴敢㉦捤ㄸ戳㘵㜱㔶㐳㤵㘰㑣ㄴ㙣㙥挸摥㔳㈹㔶扤昱㡡攳扢㤵㜲㘳挹㘸㘹搱㠰愴㈹ㅤ愸㤴㐴㍡㥤㤲㐲〱〲户慢㑢㔱㔲搷戴攷〵㠹㠸ㄸ㡡挹挸攷㌴㤲㕤晥㌰㔶㠷㔵㤴〵㘹㔲扤㙣㠵捥㌸㕦㈹㘳ㄲ㌸㌰戶㈶敡てづ㝡搵ち摤搶㌰昷搱㔶㔶搵挱㜰昵户㉣ち挷摦㘷㌸愵戲㜰ㄳ戵㥦挲ㄹ改晤〰摡㘹〸㠴戶扢㐷㔵愷㥣㔴㤶戴ㄳ㔶挹㥦捦捣ぢ㙢㙥摥㐷ㅥ㌴㘴㌶换慤㙤㜹昴㌳㤰愵㙦㈴ㄸ〴挸攵㔲㤹㑤慣㤴挹攱㐹㘹㤴㑥〹扣摣㈰挸搹慥㠱㤷㝢捤㍤㔶搹ㄷ㠱㔰敥㌷㠱㤱㐰慢㐹昴昵㤱㐴㕤愳ㄸ㈸㡣㑤收㌸愸搴戰ㅣ㝦愹捥户㉤㕣ㄲ㄰搱扡㉣㔸㜳戲㠰愲愰㔱ㅥ㈴昰ㅡ㠸愶㐹ㅡ㈴㔷㡥ㄱㄱ搹㈰㐱戳愳攷㐶㈲㘳晤〴ㄹ㠱晡㜱㈲㘴敤慤敤㘵〴㠹扤㤵㐸搹愸㉤㍦慥㑢戳攵㙣昹㐰㥡㥤㠹㡤搳捦㈲㌸㥢攰ㅣ㠲捤〰捡摦㈰攱㈸攵㤰㙥㝣昴昳昰慥㥦㑦㜰〱〰攴㤳㑥㤹ㄳ㡡㉡摡㔰慢戱㈳㔹慦て㜶戲㌴㡡〳㔱㐴换戸㘶㘷昶搹ㄲ搱愱搵戹㌶㜴㙤㕡敡搸㉢摡搳㘶㝣㌹愴挸㠴慡昱戵慥㔰㌵扥ㄱ慣摡愱摥扡〸㑤昵㈱㠲㡢〱〲挵㐲㘳㜷㜵搶㍣捤挹㡦㠵㐹ㄴㄸ㐲ㅤ㉡昷㤰㠸㘹晥㈷〸戸㤶愳换扡晤㑣㔳㜰搸晣搸摢捦㕢摡昳㜶㠸昴㈶㥤戹慥㜳攸㉢㝡㥦ㄶ昴㈵㘰㉦攵㑦㙤昵换㘵㈸搶㉦㈷戸〲愰㐹扦昰攴晤㝥扤〴搲㈴戶㘳㤸摢㐸㡦㡢戴㜰㘷㤶ㄶ㠴搴㍥扤收㡣攱捥〹ㅦ摥㡢晤ㄳ戰㠳㉢慥㉢捡㌸搰㤶㘴〶捦㉥㘷㌷㘶㝡㝢摣㡡捤晣㜵晢搸晢㔸㈸㠶㜴㕡敤㑡㌵搹挷〹㜶㘶捣摦ㄴ愳ㅣ敡摦敤敤㠵㐴慣㔱㈳㜹戱㕤昲搹㜲㕤㤲㜴㈰㐹慥挲戶敡㔷〳㐰㑡㈸扦㙦㉢㔱㠶㔹㙤㡢慣搶㘸慤搲扢㤷㜰㌲㘹昲ㅦ戶挸㤱㥥挰㔹㍢〶摦㠱搷㘷㑦㕢㜶㑤㔸昴搸㔳挲㉤挲慦㘰㤵㐵㉥㜰挹㔲搴慣换㡡㡦㠹慣攸敡㙡㌹㑢㈷昸搶㈴㥤㌴㐹㠹㐴㙥㑦㉣㑣㌸㠷搷㠹㡡㉥㐸ち㤵〴户㔰㑤〲㤱昲㔸㜷㕤挴㜴㈰㘲昲搸㌸晤㕡㠲慤〴㈳〰摡㙦㈱㘹㔶扢昱っ㠵㜵㉦搲㥤㕤㈸愴戲㐴㠳㜴て扥摥㔶㔸敤攰㌰㍢〹慥〳㘸㌲㝦攸㝣㑣㈰㐴㠹昲ㄸ㈱搲㕡搲捤愳㤶㌸㐱ㅡ搸㘰㈲愸㌴㕥昵晣㡡捤愸㔲㥦㌹㔱㌹㔸昱㈷㉣㙦〱㔱愸㐱㌳㑣摣㌱㉦ㅣ㔰㤷ぢ摢愷㈹慦戲戰㈰㑡扡㌹㕤愹㐲戴敤㥦㔸ぢ㠷㜲慣て戶愴㍣㤷慢ち㥥捥捥挶攸㐲㤱㈷㘲昸㕡改㠹㕤㤵攷㥢㠷扥晥晡㡥捥㔸㝥㔹昴㤸〱搳㌱㥤㌵戱㡢㠸ㅡ㤴扡捤㤹㜹㔷㠸㠹㍥㜳慦㙢㤵捡㤶㈳㠸っ搸㤸っ搴㑤㡡㌹㐴〸愶㉡㡣晦㔵㥣㍥㜳挶㌵ㅣ㙦挱㘰㌰㜱㘹㘳挳㥢っ㠹㘸收㤸攵㜸ㄸ㐶㘲㤱改㝥㜳㝡扥㜲〲搱摡慡敤散㌵ㄶ扣㌵㠱ㄵㄲ㝤昰㐸搴㈸慡愲慡㑡㔶捤㜶㡡ㅦㅥ挸㔳愹㙤昸愵〹㈴慥㔲ㅡ晤攵〹摡㥢㜶㝤ㄸ㥦愱㥤捥㌹昵㈲㜲㔴换散㑡㤴挲攴㔴晤〶戶戹ㄱ攰搶扤㐷昶搷愳㜲ㅦ㈸㕥慤搱挳㥦㈰攳㈵㔹搴㠲㈰昴捦㙤〸㐸㠵㜹愴ㅣ㜰㈰㌰捥户㘶昲换㤹戲づ愹㙦㐳㍤戹〷㔱愴㕥㜳搲㤸ㄵ㘵挴愲㙤挳摦㄰扣搰㡣戵㡤戲ㄷ㤶㡤㔷㙣摢㈰㘹㤱㉣愷㡢〶㈹㜸戴敡㔷づ㔸㡥㙥〲㐸晡ぢ戳㡣㤳挸㌲㑥捡慣㕥昳㌰挳㠲㌲捤扥㉡㜳㠶㙢昹昳戶㔵捣昲㠵愱扢㌵㐱㤳㘰㜲㑡摥攸㠹㘴挶㔰㤳㌵㝦〴㈶㥢㤷〷扡昳㤰愳摣㍡愲ㅦ㤴慢㉡ㄹ晣㔱㍡㜴㉣㐱挰㐸㉦愹㝥ㄳ㝡搳攴捤〸㠸ㅣ昹㥣㡥敥㕦㥣㝥㄰㌹㠱㕦㡥㔸㑦㈰ㄱ㜸〴㘳㐲㥥敥敤㡣㜹挴戱㝣㘰㡦ㄸ摢㘳昹ㄳㅥ㔰づ㠰愴㍣摥㥥㉢戱ㅡ㙢㌴㕣搳ちㄷ戵ㄶ㌵愸㠹ぢ㕢换攳㝡攳戲㘵㡡〳㡤ㄲ㔳㈴㉢㔵㤲㥡㘵㤹㌹慥㈵㔵愳㐸挵ㅤ㘹ㅢ㈵挹㙤㕡摦㜷㑡㤱て愰㤸㈴捤愴昴㕤㤲㔰㄰攴㈵㜵㐰㐷搱㕦㥦㑣ㅥ戱㘸つ㙤㠰ㅣ昵㔴㤰搷ㄷ㠶〳昷攳捡㐹㐹攴挲㌷昰昷㠶㌰㜹愸敡㌷㤴ㄸ㈷〷挳㤲搱㜲昹㤰〳㉢愱㘸戸愵㌵挲搲㔸㕢愰㘱㈴㜷㜶慡晤㠳敤㡤㌱㘲挸㠶っ㠹㈴昸㠱挱㠶㘰慥㔸㌴㤵搶㔹ㅦ户扡㤶㥤攵摢〱㘱㌸ㄲ〳搳㝥㘹㐲㉣㑡㌳慣㙥挹て捡〶戵搳愲㤴愳扡㌹㍡敢㐱愵晢㤴攳㘱㑡㌲戸㙥ㅥ愶㕢ちㄷㄸ㈰㜶挳搴㔴搱㐷㔸户搶〱㑦〶㙢〷㍢搸㤱㈰㙣㐲敢㡣ㄲ㌴㤳㐰戸㡤㡢㈰敦㜴㠸㔱〸㔲㔳㍥晦摣慤㍣昵㈴㥦ㅦ敥㑥㐵㠹㤰㠹ㄸ敡㑡戰ㅥ㠰摣㜸㔴㤲㕣㌴ㄸ〵换〳挹㈶㠵㔶㙦㤴㐷ㄳ愳㡦㈶㥦敢攳〶て攳㔸晤㘴㥢㌲敥戸昹ㄶ戴㘹㜹㘹㠳戹摦㈹㤶慢㈵㈱㔵㜱㈴慢愵㐶㕥ㄳ昸㤲搷晦〲㙥㑡搸㤷㜰㔳昶攳㈸挵㈵ㄳ㐹㥤摢摤晡愷搰㕣ち㌹昴ㄱ挸㌶〶ㅦㄳ摣㜲㌲ㄸ搶㜲㐷㠱昶攱挶晡攵〵㜹㜱づ㈲慤㈵㡢戲㙣ㄲ㜷昱㙡ㄱ㘴挹㙤戱㙡㤳㤵挹ち㙤昶㔸搶㍥㉢挸㕡ㄳ㌸挲㍡〳㠱㤷挹挰ㄸ改㤰㍢搸㐹敡㜴ㄸ搹㍤晤愰㝣㑤㥤摥ㅤㅡㅦち攳扢㍣〵愵戰慢㘰㈴ㅡ摣㙡摤敡㔶ㄸ昹愵攵慤摦っ愰㌰〴㑣㠳ㄶ㌵〳〳㘷っ改㤵つㅣ〶㈳ㄳ愲愳昱㐰㉡㘳㤴㠳㜰搸〳㘹攰㈶ㅥ愴㘷㉡㔰㐲晥㈶㜹㈹㉣扡㤷㌸㙣攳〸㔴㜱捦㙡捡㥣㌲㝣㕣㝤㜱㌶㌷㘵㡦㤶㑡㌴㜷攱㥦㕢ㄳ㔸挵戵㡤挰ㅣ摤搴㜴㈱㑢慥㠹昶摤愵㑤〵攱㐵挱㙤ㄳ昹㝤㠶㕦㥣㥦昶㤷㠲㑢㕢㥤㤲㠴昶㌳昸㈳㤶ㅤ㥤㌶㜳摡攱㈵搴㐵敥㝤敥戸㔳㌹攱挸㜹㘹ㅥ㙦晣搱㡡搵扢扢㌹挹㕣敡㍤晣㤱㡦㥡搲㕥㐵㡦慢㤹㌶㍢愸㍢㐸搸㡦㝣〲㘹㌰㠴㜴〲㥤挰㜶慦摤ㄸ㈰㥤㙣㙡愲ㄳ㈹〸搶〹挵㤹晢搰〸㐵昹㈹搰㑡㘲〹㡥攴搸昳攷挱晡捡㉢挸㈱挲昱ㅥ㡡ㄱ敤㘲愴ㄲ㔰㈷〵㜹㜸扤㠳㤷㐱晥㝦戰ㄴ㜱昳戲散昴㕦㘰㘶攵攵㘶ㄴ㕤㐸ㄴ扤搴㡡㈲〶㘲摦㔷挸㥢戳㕦㍦㙡㝥攴搷㝡晦㠷㐷捤㕢㠱㘱㍥搲ㅡ㐳㔰㡤挱昸㥡㌱搰搵㘲っ㕣㡥㘲㘹っ摣挶㌶㡣搷〷挶㐰攸敤㌸㠰㡣㤵㡤〱㐶昱ㄲ㑣扥㔸㔰㌵收挰攰㔹敢㉣㥢㥥戰㝤戸㕥㉢㍣㐴敥愱㥥扣㜱昸㥥捥㙥捤㥥㌲㕣挳摥㉣昳昷扡〲㙡换㥤挱㝤㙤搹㠴㉤捥㕤戶㐴㌶㕡挶㉢ㄱ昹搳搷㍤㈷慢扢愵づ㑣〵㑦攰愸㔷戲㑡收〳昸㐴ㄴ㥥㄰㔲㥦摢昴愳扤㝦扥敦攱摤扣㤷ㄶ搲慡挶㐰㜰㈷挱㜹㕡づ〸摦挶慥㠴㥣挹捦㙦づ攰㐳㈴㙢愱㉣挶っ㔷摡㍢㥥㙥㐷挹㠰昰㘲㠴ㄹ㄰摦㕡㌰㈶㜱挳㈱㌰㈶昳㑤㡥㑤昹昹㤲㜴〶收㘳ㄳ㤷摥扢㈸㐰愸戴㔵㔹ㅤ摡㤵摡㑦愰㜴摥攷㐴ㅡ敤㐱㥥㉦昹㈸捡ぢ捤㕡㙤㈷戵㥡㌴ㄳ㤵㘱搴㠸愴ㄴ㈲つ愴㤰昸㤱㠵愱㝦㈹愵愶㤰搰昲〰〹㌱戴收㘰㉥㑦晥敢㐲㐰搴慥昷㜵昸愹ち㜶ㄱ㔸㡣扣敥㥤㥥㕤㘹㜵㐶慡㠹㐱㔹㜹晡戸ㅤ〹㜹㑣㘱〶愳戴㌲昷㌰ㄲ搱愳㡤㈰戵㙡挷ㄳ〷改戳㠳㄰㕢挰搸㥡㑤慦㕡捥扥挵愹攲㡥〷昴㑣㐶㉡っ㘷㈳戳㜱昴㤴搱戸愰㙡㉥挸㈲散て㤲戵㐶㍤㘱ㄱ㜴㤶戳ㄹ攷㑦㠴昹昸㍤㄰换㠷敢㕤㥦搹㕣㐲ㅤ攷㜴㘳㠱晣挱晥扡㌰㠱戱㌱㉡㌹〶ㄲ㜶㔵戵戲挱㈵昰㘹㌴㤱昶扣愲搷㤳ㅣ㑢㔱ㄸ㡤㡥㌸慢㑢㙤搱晦㡣㔳㑢捥㥡㘱㙤〶慣ㅢ昴晦㔱㘴慣愸晦ㄵ㐶搹㈴捡敥〸ㄳ㝣搱ㄸ㈹㔹㌱㌸挳ㅤ㠱てㅢ㘱ㅡ㜹〴搶㘵㤲挱敤㈰㌵㡤㑦㔴㠳㘲㈹挱攱攱㑡㌷㕦㠲愸戵愵㙤摢搳㔶〰㌲ち愴晤〰㈲愸㙤㝢㑥扡昵ㅣ㥢戹ㄳ搹㥢づ㔸㐵户攲㔵㑣㝦㘸ㅡ攱摤㈱㝥㘱㘶挲收ㄹ㔵㥥㙦ㄶ㙡㤷㘲㈷㝡敦㐲㥢㠳㠷㈰戰てち晦挳㡡㍡㌲㠶戰扡㤸〵扦㌶ㅡ㠸〵㤲愸ㅤ扣㌳捣摢慢㐶ㄹㅦ愸ㅥ㠲㔷搳㘷搶㥡㔰㜶㠱㙦戹昹㉥〶户づ户戱㙥㠳攷㐷㤴昳〸㠳挹㈵摣㜵㌷昷戵㜹てㅡ敢㠶㙢昳㔸戳㌳敦㕡㑥晢㍥㜰扡扡㔱ㅡ㐹㠶㘳昲扢攳㥣㝥㌷㈱攲㍣昴㡥慥摥ㄵ换摥〶㐱攷攱㘷摢㜴㜹つ㤷攱㈸㕢㐵㥣晢戳㘸慡摣㑣㠰㥦㕥〸ㄳ㝣㔱攸捦扢㠹㠹㘷戱㉣㌲〰搲愹㡣〱搰㥥慡扦户ㅣ㔵㉢㍣㕡㤰ち㜳捡㜷㔱捥㕤ち㔶㕢㘲ㅥ㡥ㅡ昲〸㠱戴㉥〰愲㐷攱ㄱ㐲㡥晦ㄴㅡ搴挶㥦㐳㙥晢昱扦扤散昸㔴晥㜲㝤昱晥〷㈲攵愱ㅦ㐳戱㝥㥣愰㑣㘰〳っ㐴㍡愴㥦㘲㤱戲㈶ㄳ〴ㄱ㕥摥㡤㌴㥥摦㠵晦扥戹晢昵搷昸扣扤㕢㤱㠲㄰㐵㡤慢愰㈰㤴慢㜸㍣扥㡡〵攴戶㕦挵㌷㤶㕢挵〰㘵㈴㘷愲扢〰㝤㕤ち㘹㐵慥捡㐳㠲ㅢ捡㥦㈲ㄱ㡡㐴挳㉣〶㠸㔸搹戶㡡〴摡㜲攷㘵摢㐵㈴愲戶〳搱昶㘸摣㤱㠴㙦㜹愴愱挴扢㡦㜴摦㘴〲晦㙢㈶㔰㡦㔹㍢㜴扣慥〹㈱㠱戵昱攳搸戶戲㍤搳㘱㔰㕦㜹㉣挲搰扥㝤搱㠷㔲㙡ㄸ㘶〲㠵〴愶㈹㈹㡡ㅢ愹㝣㌹慡晣挲㡢㜵㉦㈹ち昰㠰㡣㠲捡愴㍣㔹昹搱愸昲㌶㝣㠴㈵敢愴㜸㘹㠰捦㥢㔱㘵㔲愸慣晣㐸㔴昹ㅦ摢㌶搷㉡㐷〴ㄹ昴慣㤱㕡ㄲ㡣㕥㜹っ㠸㝤㤰捤搳戵㘶㔲㤱昶㤸㐱㌶㐵愸㡣ㄶ㤷愵㉡敤挵晤てㄷ㥦㐴㑦攲㍡ㄳ㙥㝤㐰摡〶晦㌳挲㝥㕣㜳㥡㌰㝣〳㕦㍣㉦㈲扥散敡昲㡤㡤㌳收㈱ㄷㄹ摤收㝥て㠷慢搲㥡㈲ㄱ搸〵改㘰㝦㔷昰挳㈷搸㤰昵晤㠸攲㘲㉡慦㡤㜴愶㐵㘴㉣㈵慤㍣ㅣ㘱㌶㜵慡㑥㌳晡攷㠱ㅣ挸㑢㐰㈶昴〷〰㠳搸换㈶㘶っ㔰㄰㐸㉥㍦㠵㠴晥㄰挱ㄷ〰㜲ち戹㥥㜴㤰昹㈲㐰㝦昴晦㔲っ㉤㑡挷㠹慡摣ㅦつㄶ㈷㈳晤㑢㙣昰〸㐰ㄷ㍣戶㑡㐸㠴㌹晤㔱攴挴〷愵〴㤱㠳㍥挶㠲慦㄰㝣ㄵ㈰愷㜱戲慢摥㌵慥愹㐳ㄵ昶㌵㌴㔵戸ㄵ㔲愰㝤㍤㑣昰㐵㍢〵㜰㔳㝢愳㤹㘷攲攸㍢㝥㐴㌷ㅢ㍥搸扦〵ㅦ攰㉦㜱搱㕤昸晦㐷㌴㘹攱愷搵㑦㜴搶ㄷ㤹㐰攳㝣昸㜳戱搹ㅦ愰ㅦ慥慢㙥㙣戲挷㑦攲㤷㔵㌳捡㐳昸昷ㄴ㝥捡扤ㄸ㠱愳㔰攵㘶攱㙦㈱つ挸㠲㠵戰㠰扡㑢㝦ㅣ㐰㈱㡥㠹㈷晤〹扥ㄱ戵散㕦晦㘶㤸攰㡢㐲扣㥥㘲愲ㅣ㌶㡦〶㈴慥㘵挱昱愶〱㠹㝦㔹㜰㉣㍥攰户㤰慢㐸㘴㈱搱愸㥥㠸戴㌴㜳㥦〴攸敢敡攷摣愸敥搴㤳㑡昱㥥搲㍤昷扣搳㥦ㅥ㍡㌷晤改㥢㝢㥦㝣昳㌷㙦㍤昱挶㘷㜶晤晤摤愷㥦㝥攳慦㑦扣昶敥慢戳扢㝥昵摣㜳扦戸昵㤹搷摥摡㘸㍥慢扥昸捥攴戳昷㡦ㅣ扦晦㕥昳挸㌵㝢敦扦昳搸敤㈳㔳㘷っ㜷㜵㜵㜷㕦㌹昸敢㜳慥ㅡ㌸㜵敦㑢捡捦晦㜸戶愳挸攵㜲㐰〱㄰㍤〳㕣戶㥣挶㜷㤰挰㌴㌸攳㡦㜴ㅡ㕣敥㈹晣㤴㔲戸㔱㘳㜸挹挲戹挱〹挸㠲㘲㘳㐱捦㝦〰㔰扢戴て | D30: 㜸〱敤㕣㕢㙣ㅣ㔷ㄹ摥ㄹ敦慣㜷搶㜶散挶改㈵愵㉤㠶㕥挱搱ㄲ攷㔲㕡㑡㐸㝤㠹㤳戴㐹散挶㑥ち攲戲ㅤ敦㥥戱㈷㤹㤹㜵㘷㘶㥤戸㉤㌴攵搲㜲ㄵ愲㍣㐰㉦㐰㔵愱〲㉦㐸攵愱攲㉡㠱㠴〴㐲㉤攲〱㈱昱㠰㔴㄰㠲〷㄰㡡搴㤷㑡㔴㉡摦㜷㘶㘶㜷㜶搷㍢㜶户㉤戸挸㤳散㥦㌳攷㝥捥㝦㍤晦㝦㈶ㄹ㈵㤳挹扣㡡㠷晦昲挹㌲㜱搵摣慡ㅦ〸愷㌸㔹戵㙤㔱づ慣慡敢ㄷ挷㍤捦㔸㍤㘶昹㐱て㉡攴㑡ㄶ捡㝤慤攴㕢昷㠹㝣㘹㐵㜸㍥㉡㘹㤹㑣㍥慦慢㈸㘷㈷晣つ挵㉦㍡㕢昵㘷〱收㈷㈷㘶ㄶ捥愰搷戹愰敡㠹㕤㈳愷挳戶〷挶挶㡡㘳挵扤晢昶摥㕣摣扤㙢㘴戲㘶〷㌵㑦ㅣ㜰㐵㉤昰っ㝢搷挸㙣㙤挱戶捡㜷㡡搵昹敡㔹攱ㅥ㄰ぢ扢昷㉥ㄸ晢㙥ㄹ摢户㝦扦㜹敢慤户昴㘳攸捣㠹挹㠹㔹㑦㤸晥ㅢ搴愷挶㈹敦㥢ㄲ㘵㡢㙢ㄳ挲戳摣挵攲攴〴晥㈶收㡦户昷ㄶ攷㤶㠴〸㌸戴昰㠴㕢ㄶ扥㡥㠶㝤捥戸敦搷㥣㘵㙥㥥敥㑣㘳愹㘵挳て㌴㘷㔲搸戶敥挴扤收㥤ㄹ散㥤㙤慣昶㍢㜳挲昵慤挰㕡戱㠲搵㥣㌳㡦㡥㉡〳捥㈹㕦㥣㌴摣㐵㜱挲㜰㠴收ㅣ慥㔹㤵㙣昸㘴㝡㙥㡣扢㐸㑥㑣㉥扦㌸敥㍢㤳㑢㠶㈷㘷攴㜳㘳㔲敡㑥㝢攵收扡搷㜶敥㤷㔳㤷㈳戰捦敢㍢搷㐳挹㘹挳慢搷ㅣ敤㕣㌳㕡㝣昳っ摥搳戹㝥㘲㡦㥡摢扣慢㜳ㅢ戹㤵捤戵㤵扥㠸扥攵㡥㘲㌱㝡㡥愰㤷㈰㑦㐰〴敡〵㠲㍥㠲㝥〰㈵晢ㄲ戸㈴搹㤰㐵㙡挹㔰㑢ぢ㙡愹慣㤶㉡㙡㐹愸㈵㔳㉤㉤慡愵㈵戵㘴愹愵㌳㙡改㉣敡挴㑦扥户㔷㡤㥥ㄷㄶ散㤷㙡捦晥㝣晡㠹晢㕦㥤㌹昳敦敦晣愹㝦ㅢ㉡摤ㄵ㑤㙡捡㌳捥㠱搴ㅡ㔴扣愷戸㥢㝦搶攷ち㌰㠵戹摦㝣慦㌹㌶㔶搹扦摢搸㙢㘸㕣㔶ち昲㥢〸㘵〸㜵晢捤扢㉤户㔲㍤㈷㜱㜷搵㠴攱㡢挶挶㡤㐶㘵ㄳ搵㥡㕢昱摦戶㜶攱㕣㘰〴攲捡搶戲㐶㈷㙤捤收挰㔶挲㤷攳㕤搳摡散戴㘱搷挴昸㜹㉢㉣扥扡愵搸㤹昵慡ぢ㥤㑢愷㍤㜱㙦扤戴㙤㐶攳㄰㙡㉢戲敦戶㔵㠶㐵攱扣㐶㈶㤷慡扥㜰攵昴㐶㥤㔹慢㝣㔶㜸㜳㠲㈲㔱㔴攴㔲㉦㘵㔱挴昵愳㌳㉥ㄶち㙥慤扣㌳㤹㙢ㅥ㍡ㅦ㠰㤹㐵〵昳㕤ㄶ㕥戰㍡㙦㉣搸攲戲愶㉡攱㤸㈸搸搹㤴㍤㕤㉤搷晣挹慡ㅢ㜸㔵扢戹㘴扣戲㘲㐰搲㔴㡥㔷㉢㈲㥢捤㐸愱〰㠱摢搳愳㈸㤹㜷㜷收〵㠹㠸〴㡡挹挸㔷㌴㤳㕤昱㈴㔶㠷㔵搸㠲㌴愹㕥户㑥㘷㥣慦㤴㌱㈹ㅣ㤸㔸ㄳ昵〷〷扤㘹㥤㙥敢㤸㝢㜳㉢慢敡㜰戴晡㐳㉢挲つ㡥ㄸ㙥挵ㄶ㕥慡昶㔳㌸㈳㝤㄰㐰扢〸㠱搰㜱昷愸敡㤴昳捡慡㜶捥慡〴㑢戹㈵㘱㉤㉥〵挸㠳㠶捣攷戹戵㙤㡦㝥〹戲昴敤〴挳〰㠵㐲㈶户㠳㤵㜲〵㍣ㄹ㡤搲㈹㠵㤷㥢〴㌹摢㌵昱㜲扦㌹㙤搹㠱〸㠵昲愰〹㡣㠴㕡㑤愲㙦㠰㈴敡ㄹ攵㔰㘱散㌰㈷㐱愵㠶攵〶慢つ扥㙤攳㤲㤰㠸戶㘴挱愶㤳〵ㄴ〵捤昲㈰㠵搷㐰㌴㉤搲㈰扤㜲㠲㠸挸〶㈹㥡ㅤ㍤㌷ㄳㄹ敢愷挸〸搴㑦ㄲ㈱㙢敦敥㉣㈳㐸散敤㐴捡㐶ㅤ昹㜱㑢㥡慤㘵换㠷搲散㔲㙣㥣㝥ㄹ挱攵〴㔷㄰散〴㔰晥〶〹㐷㈹㠷㜴昳愳扦つ敦晡㔵〴㔷〳㐰㍥改㤴㌹㤱愸愲つ戵ㄱ㍢㤲昵〶㘰㈷㑢愳㌸ㄴ㐵戴㡣敢㜶收㠰㈳ㄱㅤ㔹㥤㥢㐳搷㘶愵㡥扤愱㌳㙤㈶㤷㐳㡡㑣愹㥡㕣敢㍡㔵㤳ㅢ挱慡㕤敡慤户愳愹㍥㐲昰づ㠰㔰戱搰搸摤㤸㌵㑦㜳昲㉤㘱ㄲ㠵㠶㔰㤷捡㍤㈲㘲㥡晦㈹〲慥敤攸戲㘵㍦搳ㄴㅣ㌵摦昲昶昳慥捥扣ㅤ㈱扤㐵㘷㙥改ㅣ晡㡡㕥愳〵晤㑥戰㤷昲愷㡥晡攵㍡ㄴ敢搷ㄳ摣〰搰愲㕦㜸昲㝥慤㕥〲㘹ㄲ㍢〹捣㙤愷挷㐵㕡戸昳慢换㐲㙡㥦㝥㜳摥昰ㄶ㐵〰敦挵搱㈹搸挱㔵捦ㄳ㌶づ戴ㄵ㤹挱戳换攵捤㤹晥戴㔷㜵㤸扦㘵ㅦ晢㙦〹挵㤰捤慡㍤㤹ㄶ晢㌸挵捥㑣昸㥢ㄲ㤴㐳晤扢户戳㤰㐸㌴㙡㈶㉦戶㑢㍦㕢㙥㐹㤲㉥㈴挹㑤搸㔶晤㕤〰㤰ㄲ捡ㅦ㍡㑡㤴㔱㔶摢㈵慢㌵㕢慢昴敥愵㥣㑣㕡晣㠷㙤㜲愴㉦㜴搶㑥挰㜷攰て㌸㜳㤶㔳ㄷㄶ㝤捥慣昰捡昰㉢㔸戶㈸㠴㉥㔹㡡㥡㉤㔹昱ㄶ㤱ㄵ㍤㍤㙤㘷改ㄴ摦㥡愴㤳ㄶ㈹㤱捡敤愹㠵㈹攷昰〶㔱搱〵㐹愱㤲攲ㄶ慡㑢㈰㔲ㅥ敢㙥㠹㤸㉥㐴㑣ㄱㅢ愷扦㠷㘰㌷挱ㄸ㠰昶㕢㐸㥡㡤㙥㍣㐳㘱扤㉢㜴㘷㤷㑡㤹㍣搱㈰摤㠳㉦㜴ㄴ㔶晢㌸捣㝥㠲㥢〱㕡捣ㅦ㍡ㅦ㔳〸㔱愲㍣㐱㠸戴㤶㜴昳戴㈵捥㤱〶戶㤹〸㉡㑤搶晣愰敡㌰慡㌴㘰㑥㔵㑦㔴㠳㈹换㕦㐶ㄴ㙡搸㡣ㄲ㜷㉦〹ㄷ搴攵挱昶㘹挹慢㉥㉦㡢㡡㙥捥㔵㙢㄰㙤㐷愷㌶挳愱ㅣ敢㠳㉤㈹捦攵慡㠲愷扢戳㌱扡㔰攴㠹ㄸ扥㔶㝡㘲㌷攴昹收愱㙦戰戱愳昳㔶㘰㡢㍥㌳㘴㍡愶昳㈶㜶ㄱ㔱㠳㑡慦㌹扦攴〹㌱㌵㘰ㅥ昶慣㡡㙤戹㠲挸㠰㡤挹㐰摤㌱戱㠸〸挱㙣㤵昱扦慡㍢㘰捥㝢㠶敢㉦ㅢっ㈶慥㙥㙦㝡㤳㈱ㄱ捤㥣戰㕣ㅦ挳㐸㉣㌲㍤㘸捥㉤㔵捦㈱㕡㕢㜳摣挳挶戲扦㈹戰㐲愲てㅦ㠹ㅡ㐵㔵㔴㔵挹慢昹㙥昱挳〳㜹㈶戳〷扦㉣㠱挴㔵㐶愳扦㍣㐵㝢搳慥㡦攲㌳戴搳㌹愷㝥㐴㡥敡㤹㍤愹㔲㤸㥣慡摦挲㌶户〲摣㜱昸搴搱㐶㔴敥㜵挵慢㌵㝡昸㔳㘴扣㈴㡢㝡㄰㠴晥戹㙤㈱愹㌰㡦㤴〳づ〴挶昹搶㑡㝥〵㔳搶㈱昵㙤㙢㈴愷ㄱ㐵敡㌷㡦ㄹぢ挲㐶㉣摡㌱㠲㙤攱ぢ捤㔸挷戰晤愸㙣戲敡㌸〶㐹㡢㘴㌹㔷㌶㐸挱攳戵愰㝡摣㜲㜵ㄳ㐰搲㕦㤴㘵㥣㐷㤶㜱㕥㘶昵㥢㈷ㄹㄶ㤴㘹昶㔵㕤㌴㍣㉢㔸㜲慣㜲㥥㉦っ摤㙤ち㥡〴㤳㔳昲挶㑦㉣㌳㐶㕡慣昹㔳㌰搹晣㈲搰㕤㠴ㅣ攵搶ㄱ晤愰㕣㔵挹攱㡦搲愵㘳〹〲㐶㝡㐹昵摢搰㥢㈶㙦㐶㐰攴挸攷㘲㝣晦攲攲㠳挸〹晤㜲挴㝡ち㠹挰㈳㤸㄰昲㜴㙦攷捣㔳慥ㄵ〰㝢挴搸戴ㄵ㑣昹㐰㌹〰㤲昲㜸㝢愵挴㙡愲搱㘸㕤㉢扣扤扤愸㐹㑤㕣搳㕥㥥搴ㅢ搷慤㔱ㅣ㙡㤴㠴㈲㔹慦㤲搴㉣㙢捣㜱㌳愹ㅡ㐵㉡敥㔸摢㈸㘹㙥搳挶扥㔳㡡扣づ挵㈴㘹㈶愳ㅦ㤰㠴㠲㈰㉦愹〳㍡㡡晥晡㜴昲㐸㐴㙢㘸〳ㄴ愸愷挲扣㠱㈸ㅣ㜸ㄴ㔷㑥㉡愲㄰扤㠱扦户㐵挹㤹㕡搰㔴㘲㥣ㅦ㡥㑡挶㙤㝢挶㠵㤵㔰㌶扣捡㈶㘱㘹慣㉤搴㌰㤲㍢扢搵晥攱昶㈶ㄸ㌱㘲㐳㠶㐴㔲晣挰㘰㐳㌰㔷㈲㥡㑡敢㙣㠰㕢㕤捦捥昳敤戸㌰㕣㠹㠱戹愰㌲㈵㔶愴ㄹ搶戰攴㠷㘵㠳晡㘹㔱捡㔱摤ㅣ㕦昰愱搲〳捡昱㈸㈵ㄹ㕣㌷㑦搲㉤㠵ぢっ㄰扢㔱㙡戶ㅣ㈰慣㕢敦㠰㈷㠳捤㠳ㅤ散㐸ㄸ㌶愱㜵㐶〹㥡㑢㈱摣收㐵㤰㜷扡挴㈸〴愹㈹㥦㝦ㅤ㔴ㅥ㝦㡣捦昷づ㘶攲㐴挴㐴っ㜵愵㔸て㐰㙥㌲㉡㐹㉥ㅡ㡥㠳攵愱㘴㤳㐲慢㍦捥愳㠹㌱㐰㤳捦ぢ㜰㠳㠷㜱慣㐱戲㡤㡤㍢㙥㠱〵㙤㙡慦㙥㌳㡦扡㘵扢㔶ㄱ㔲ㄵ挷戲㕡㙡攴㑤㠱㉦㜹晤㉦攴愶㤴㝤㠹㌶攵㈸㡥㔲㕣㌲㤱搴扤摤慤㝦〰捤愵㤰㐳ㅦ愱㙣㘳昰㌱挵㉤㈷㠳㘱㙤㜷ㄴ㘸ㅦ㙥㙦㕣㕥㤰ㄷ攷㈰搲摡戲㈸换㡥攱㉥㕥㍤㠲㉣戹㉤㔱敤㔸昵㔸㤵㌶㝢㈲敢㠸ㄵ㘶㙤ちㅣ㘱㥤愱挰换攵㘰㡣㜴挹ㅤ散㈴㜳㌱㡡散㕥㝣㔰扥㘶㉥ㅥ㡣㡣て㠵昱㕤㥥㠲㌲搸㔵㌰ㄲつ㙥戵㘱㜵㉢㡣晣搲昲搶㙦〷㔰ㄸ〲愶㐱㡢㥡愱㠱㌳㠱昴晡〶づ㠳㤱㈹搱搱㘴㈰㤵㌱捡㘱㌸散㠱㌴㜰ㄳて搲昳㔵㈸愱㘰㠷扣ㄴㄶ摦㑢ㅣ㜵㜰〴慡㝡㤷戵㘴捥ㅡ〱慥扥戸㍢㕢戲挷㉢ㄵ㥡扢昰捦㙤ち慣攲摡㐶㘸㡥敥㘸戹㤰㈵搷㐴晢敥摡㤶㠲攸愲攰㥥愹攲ㄱ㈳㈸㉦捤〵慢攱愵慤㙥㐹㐲晢ㄹ晣ㄱ㙢㡥㑥㥢㌹敢昲ㄲ敡ち昷扥㜰搶慤㥥㜳攵扣㌴㥦㌷晥㘸挵敡扤扤㥣㘴㈱昳㉡晥挸㐷捤㘸㍦㐵㡦ㅢ㤹㌶㍢㘸㌸㐸搸㡦㝣㐲㘹㌰㠲㜴ち㥤挰㜶慦摦ㄸ㈰㥤散㘸愱ㄳ㈹〸戶〸挵㕤㝣挳〸㐵昹〹搰㑡㘲〹㡦攴搸昳㘷挰晡捡㡦㤱㐳㠴攳㍤ㄲ㈳摡㍢㤰㑡㐱㥤ㄴ攴搱昵づ㕥〶昹晦挱㔲捣捤㙢戲搳㝦㠱㤹㤵ㅦ戵愲攸ㅡ愲攸㠷敤㈸㘲㈰昶㌵㠵扣㌹晢慤愳收㥢㝥慤昷㝦㜸搴扣〳ㄸ收㈳慤㌱〴搵ㄸ㡣慦ㅢ〳㍤㙤挶挰昵㈸㤶挶挰㥤㙣挳㜸㝤㘸っ㐴摥㡥攳挸㔸摦ㄸ㘰ㄴ㉦挵攴㑢〴㔵ㄳづっ㥥戵㉥㜳攸〹㍢㠲敢戵挲㐷攴ㅥ敡挹㥦㠴敦改昲昶散㔹挳㌳㥣㥤㌲晦戰㈷愰戶扣㜹摣搷㤶㑤搸攲捡㌵㑢㘴愳㌵扣ㄲ戱㍦㝤换㜳戲戱㕢敡挰㔴昸㠴㡥㝡㈵慦攴㕥㠷㑦㐴攱〹㈱㜳晦㡥敦ㅦ晥昳㝤㥦㍥挸㝢㘹ㄱ慤㙡っ〴㜷ㄳ㥣愷攵㠰昰㙤攲㑡挸愵晣晣收㌸㍥㐴戲㤶㙤㌱㘱㜸搲摥昱㜵㈷㑥㠶㠴㤷㈰捣㤰昸㌶㠳㌱㠹ㅢづ愱㌱㔹㙣㜱㙣捡捦㤷愴㌳戰㤸㤸戸昴摥挵〱㐲愵愳捡敡搲慥搴㝥〰愵昳ㅡ㈷搲㙣て昲㝣挹㐷㔱㥥㙤搵㙡晢愹搵愴㤹愸㡣愲㐶㉣愵㄰㘹㈰㠵㈴㡦㉣っ晤㑢㈹㌵㡢㠴㔶〴㐸㠹愱戵〶㜳㜹昲摦ㄲ〲愲㝥扤慦换㑦㔵戰㡢挰㘲散㜵敦昶散㑡慢㌳㔶㑤っ捡捡搳挷㕤㐸挸㘳ち㌳ㄸ愵㤵戹㈷㤱㠸ㅦ㙤っ愹つ㍢㥥㌸挸㠰ㄳ㠶搸㐲挶搶ㅣ㝡搵ち捥㈱户㠶㍢ㅥ搰㌳㌹愹㌰摣敤捣挶搱㔳㐶攳挲慡㠵㌰㡢㜰㌰㑣搶ㅢ昵㐵㐵搰㔹敥㑥㥣㍦ㄱ收攳昷㐰㉣ㅦ㙤㜴㝤㘹㙢〹㜵㥣摢㡢〵昲〷晢敢㥡ㄴ挶挶愸攴ㄸ㐸搸つ搵捡㠷㤷挰攷搰㐴摡昳㡡摥㐸㜲㉣㐵㘱㌴㍡收慣ㅥ戵㑤晦㌳㑥㉤㌹㙢㥥戵ㄹ戰㙥搲晦愷㤱戱慥晥㔷ㄸ㘵㤳㈸扢㍢㑡昰㐵㘳愴㘴摤攰っ㜷〴㍥㙣㠴㘹攴ㄱ㔸㤷㐹〶户挳搴ㅣ㍥㔱つ㡢愵〴㠷㠷㉢摢㝡〹愲摥㤶戶㙤㕦㐷〱挸㈸㤰昶㕤㠸愰㡥敤㌹改昶㜳㙣敥㐳挸摥㜱摣㉡㝢㔵扦㙡〶㈳㜳〸敦㡥昰ぢ㌳ㄳ㌶捦戸昲㑣慢㔰扢ㄶ㍢搱晦㘱戴㌹㌱〳㠱㝤㐲〴㙦㔴搴㤱㌱㠴㡤挵㉣昸戵搱㔰㈲㤰㐴敤攰㕦㘲摥㔵㌳㙣㝣愰㍡〳慦㘶挰慣㑤愱散㐲摦㜲敢㕤っ㙥ㅤ㙥㘳摤〹捦㡦戰㡢〸㠳挹㈵㝣昸愳摣搷搶㍤㘸慥ㅢ慤捤㘷捤敥扣㙢〵敤摢挰改挶㐶㘹㈶ㄹ㡥挹敦㡥ぢ晡㐷〹ㄱ攷愱㜷㜴攳慥㔸昶㌶っ㍡㡦㍥摢愶换㙢搴㠶愳㙣〳㜱敥㡦愱愹㜲㍢〱㝥㝡㈹㑡昰㐵愱㍦敦㌶㈶㥥挲戲挸〰㐸㘷㜲〶㐰㘷慡晥收㕡㔴慤昰㘸㐱㉡㉣㈸摦㐰㌹㜷㈹㕣㙤㠵㜹㌸㙡挸㈳〴搲扡〰㠸ㅦ㠵㐷〸㌹晥攳㘸㔰ㅦ㝦ㄱ戹㥤挷晦晡㥡攳㔳昹换昵㈵晢ㅦ㡡㤵㠷㝥〶挵晡㔹〲㥢挰〱ㄸ㡡㜵挸㈰挵㈲㘵㑤㉥っ㈲晣攸㈰搲㜸㝥ㄷ晤晢攲挱ㄷ㥥攷昳捦㠳㡡ㄴ㠴㈸㙡㕥〵〵愱㕣挵㔷㤲慢㔸㐶㙥攷㔵㝣㜹慤㔵っ㔱㐶㜲㈶扡〷㌰搰愳㤰㔶攴慡㝣㈴戸愱晣㈹ㄲ愱㐸㌴捤㘲㠸㠸㤵㙤㙢㐸愰㉤㜷㕥戶㕤㐱㈲㙥㍢ㄴ㙦㡦挶ㅤ㐹昹㤶㐷ㅡ㑡扣晢㐸昷㑤㉥昴扦收㐲昵㤸㜷㈲挷敢愶㄰ㄲ㔸ㅢ㍦㡥敤㈸摢㜳㕤〶昵㤵捦挵ㄸ㍡㜲㈴晥㔰㑡㡤挲㑣愰㤰搰㌴㈵㐵㜱㈳㤵捦挶㤵㥦㝤慥攱㈵㐵〱ㅥ㤰㔱㔸㤹㤴㈷㉢㍦ㄲ㔷摥㠳㡦戰㘴㥤っ㉦つ昰㜹㌱慥㑣ち㤵㤵ㅦ㡥㉢晦㘳捦捥㝡攵㤸㈰挳㥥㌵㔲㑢㡡搱㉢㡦〱㠹て戲㜹扡搶㑣㉡搲㍥㌳捣愶〸㤵搱㘲㕢慡搲㝥摣晦昰昰㐹昴㌱㕣㘷挲慤て㐸摢昰㝦㐶㌸㡡㙢㑥㔳㐶㘰攰㡢攷ㄵ挴㤷㍤㕤扥戱㜱捥㥣昱㤰搱㙢ㅥ昵㜱戸慡㙣㉡ㄲ㠱㕤㤰つ昷㜷ㅤ㍦㝣㡡つ搹搸㡦㌸㉥愶昲摡㐸㜷㕡㐴挶㔲戲捡愷㘳捣㘶㉥㌴㘸㐶晦㌸㤰〳㜹〹挸㠴晥〹挰㌰昶戲㠳ㄹ㐳ㄴ〴㤲换㉦㈰愱㍦㐴昰㐹㠰㠲㐲慥㈷ㅤ攴㍥〵㌰ㄸ晦扦ㄴ㈳㉢搲㜱愲㉡て挴㠳㈵挹㐸晦っㅢ㍣っ搰〳㡦慤ㄲㄱ㘱㐱㝦〴㌹挹㐱㈹㐱攴愰㥦㘳挱攷〹扥〰㔰搰㌸搹つ敦ㅡ搷搴愵ち晢㈲㥡㉡摣ち㈹搰扥ㄴ㈵昸愲㕤〰戸慤戳搱捣㌳㜱晣ㅤ㍦愲㥢㑤ㅦ散ㅦ挲〷昸慢㕣㜴て晥晦ㄱ㑤㕡昸㔹昵㝤摤昵㐵㈶搰㌸ㅦ晥㍣㙣昶敢攸㠷敢㙡ㄸ㥢散昱晤昸攵搵㥣昲㄰晥扤㠰㥦㜲㉦㐶攰㈸㔴戹㜹昸㕢㐸〳戲㘰㌹㉡愰敥搲扦〲愰㄰挷挴㤳晥㈸摦㠸㕡昶慦㝦㌵㑡昰㐵㈱㕥㉦㌰㘱㐷捤攳〱㠹㙢㔹㜰戶㘵㐰攲㕦ㄶ㥣㐹づ昸㌵攴㉡ㄲ㔹㐸㌴慢㈷㈲㉤换摣挷〰〶㝡〶㌹㌷慡㍢昵扣㔲扥愷㜲捦㍤㉦て㘶㐷慥捣㝥昰昶晥挷㕥晣捤㕦ㅥ晤晤㐷づ晣晤㤵㈷㥦晣晤㕦ㅦ㝤晥㤵㥦㉥ㅣ昸搵搳㑦晦昲㡥㙦㍤晦㤷敤收㔳敡㜳㉦ㅦ㝢敡㠱戱戳て摣㙢㥥㝡昷攱〷㍥㜴收慥戱搹㑢㐶㝢㝡㝡㝢㙦ㅣ晥昵ㄵ㌷つ㕤戸昷㠷捡㉦晥㜸戹慢挸攵㜲㐰〱㄰㍦㐳㕣戶㥣挶ㄳ㐸㘰ㅡ㥣昱㥢㍡つ㉥昷〲㝥㑡㈵摡愸〹扣攴攱摣攰〴㘴㐱戹戹愰敦㍦敢ㅤ戵㐱
A31: Decisioneering:7.0.0.0 | B31: Decisioneering:7.0.0.0 | C31: Decisioneering:7.0.0.0 | D31: Decisioneering:7.0.0.0
B32: CB_Block_7.0.0.0:9
B33: 㜸〱㤵㤸〹㔸㔳挷ㅡ㠶㌳〱㠴㠰换愹ㄶ慢㤵搶攵慡慤愲㉣愲㜵㘵㌳慣㉥㐱㐴戱慥㌱攰愱㐴㤶搸㠴㔸挵搶㕢㜷挱戵㈲㉡㔶挴㔶㐵㘹㐵㐵慣㈲ち㘲摤慢ㄴ㜷慢〸㠲㕢慢㙤摤昷昵㥥敦捦昸㍣摥摢㜳晡昴捥愳挳㤷晦㝦攷捣㥦㘴收㥢㜳愲㘲㉡㤵敡㤵搴昰ㄷ捤ㅥ挲㉤㙡愲㈵㐵㑣昲搰㥡ㄲㄳ挵搸ㄴ愳㈹搹攲ㄱ㘸㌶ㅢ㈶昶㌳㕡㔲散㈴愰㡥摥㈸攵㉤づ㝡㡢㌱㔵㜴搲㡦ㄷ捤ㄶ〹㜲㔰愹㥣㥣㌴㙡㈹摦㤴晦ㄷ㕥扦搰㘰㤴挶ㅥ㥤㐴愹㌴㜵搰㌹愲㜳㐲愷㐱攷㡣捥〵㕤㕤㜴昵搰搵㐷搷〰㥤㠰敥㉤㜴つ搱㌵㐲昷㌶㍡㔷㜴㡤搱扤㠳慥〹㍡捣慦㜹ㄷ㕤㌳愹慢敢㈶㜵㠳戴扤㈳㘲挶㑡敦㈶㉡挵㘴ㄶ㍢戴㠸戶搵散敢敤敤攱敤攱搳搹攷㈳て慦づ㉤戴搶挴ㄴ慢㔹昴㑤ㄶ慤㈹㘶㐳㘲㠷ㄶ〳慣㌱㠹挶搸扥攲挴㐱愶〴㌱搹㔷㡣昱昲㠹㌱㜴敥收摤戹㑢㤷戸敥摤扢㌹攰㙤㜵ちㄲ㘳㡤㜸晦愲㘸㌶㈶㝦攲愱敤㉤晤㝢㘳㉥改㔵㔷改愳㌴㥢挵㐴〳㍥换㠱㘲ㅣ摥㙦搳愴㐰㡢挵㥡㌴づ㈱敦㈱㈶㜳㠲㈵㕥ㄴ㔳㐲慤挶㌱挲㥢ㄹ〴摥㐴㍢㈹愲㥤㠰搶㑤搲㥡挴戸㌸㘳慣㔱㑣㑥㜱攵㉦愴晡愴㔷搲扣搲㝢ㅥ㘴慡㥦ㄴ㍣㈱㔶㑣搴㡡㠹㠹㔲挸㔲㉦㘹戰㐵ㅣ㘸㐸晥㐴搴ㄹ㤲㐴㠷㈴㕣挵㑥㙡㉡戵扤捡捥㠵慦〴〴晦㠹慥攳晤㑦㍥㡣晦㥡ㅦ㕦づ㝢昳摡〸搸㕦㤶搶攴㥢㐱慣ぢ戵摥愰搶挷愸昵戱㙡晤ㄸ戵㕥㔴敢攳搴晡㑦搴晡㜸戵摥愸搶㡦㔵敢ㄳ㈴收㜵㜳㜲㜴㔴昳㌶㉣㘱愸敦昴㤶㡤㈲戶㘵慦㠸晥昳昰戹㑡㜶㐹扡㌶慥扦昰㔹㜰扤敡挷攳晡㉦慡昱ㄲ搶ㄷ㙦㐹㘷戵㍣昱㤷ㄱ㌵㍣攱㝥㝣晢㘷戹㘱て㜴摢挴晢㘷㡥㈵戸慦戰捤㔶攳敦慣㘹〹挹慡㌹昷㠵㕦散㥡㌹㘷敦敡戶ㅥ㉢㑤㔸晢昵愹㠷っ㉢ㅦ㙢㠵㔵㈹㑤㜱㠱㈷晡ㅣ㡣昲扥㍤愹㐴户㘵攵愹挵扦㌴㜶つ㘷㤵㑡㈳捥昳㐴㥡㔷㡦㜸搵㠸㈹㘱换愳㕤㐷挶㔹㔷㠷愳ㄲ㤵ち㐵㝤〰挱㝥攱㕣户摢㡤摢㝦㝥捤ㄲ㕣㌴搰摦昴攲攷攵摥っ㍢㤱㡡㍡慢㌴挵ㄹ㥥愸攳㘹戱㜷㈹㉢㡥㔸昶慢㝡挲愸摢挷散搹㘹愵ㄱ愷㜸㘲㕤㤷ㄵ㜹晢攷晥愰摢扥挰㑢㜸收昷捥ㄹ㔴㘲㉢慡㈳〴㍢挱戹㍦ㅥ㝦搸改搰㤶扢晤㜲㉢愶㉦戸㜴昲㠵㤶挱ㄹ愸愸攳㑡㔳ㅣ攳〹敦㈱慤㝥㕤攱㝡戰敦愶戳㍤攷㠷戶戹攵挲㉡㤴㐶晣捣ㄳㄷ㜴㜳㘲ㄷ㌷㐸ぢ㉦㌹搴㕦ㅦ昶慣㘱㍢㔴㘲㉢捡〷㠲ㅤ攵㕣㈳敤㈵㔷戶换慤昷㥡㝢挷㥥ㄸ㍢㌷㕡挹攰㔴㔴搴ㄱ愵㈹㝥攲㠹戹ㅥ㡢㝦扢㌸㜹慦戶㔰晦攵昷晢ㄶ㡦慢挳づ㉢㡤㌸挴ㄳ扤㉡晡㜷㜹ㄵ㕡ㄱ戴戹㌶㍦㉤㜰㘶摣㐹㔴㘲㉢慡㍢〴㍢挰戹〳挲㡤㠹㤵昵㜲〳收㡤㌹昵㘹㐹户昰攷っ捥㐹㐵敤㔷㥡㘲ㅦ㑦㉣敡㝡㈵㝦挴搲攳㝤㡢㐷戴㑤㑣㥦㈷㉣㘱㝢㤵㐶晣挸ㄳ㑦㘷慤㉢ち㝣昱慤㙥摡㡡戶㔹戹㐳戵慦㔰㠹慤㈸㝦〸㔶挶㌹敢つ㠷昱慦捥㔶昵摢攱戵改愷愹㌵㥥㍥っ捥㐶㐵敤㔶㥡愲㤴㈷㈶收摣散晦搵搵〵㐱㠵㘱㌷㐷㥣慢慤ㅡ挹㑡㤴㐶散攲〹攵摤ㄷ㑣㐵ㄵ㜳敥㝡㤵慥挵扥敡搳扡昴㘳㔳㤷扤捣戶㘸ㄹ㑥ㄶ㉡㙡㠷搲ㄴ㐵㍣㜱搷㝤挲挶㝥㔹〱㘱搳㤷ㄷ㕣晤㐶敤㌵㤸㙤㔷ㅡ戱㡤㈷愶㝡づ扢搲慢戶㍣㜸㑢散㡢㉣搷ㄶ㍢敦愰ㄲ摢㈷搵ㄷ㠲㙤攵摣搷摢㜲㔲㈳㔷㙤㡤挸扥晥昴㔱㡦㑡敢㜰〶㐷愳愲ち㤵愶搸挲ㄳ扢㘷㙢㜶扢扡㥥攸㌳换敡㔸㌱愹捤攷㕢㔹㠱搲㠸捤㍣㤱㜹散搵挷慢ㅥ㌶ぢ换㌷㕥㉢㝦ㅥ扡〳㉢㐵㙡戰㠴㐸〸戶㤱㜳昱㐷㝦㙢摦㌵㈸㈲㌸㙢㘳挷㔴扢ぢ㐷戶㌲㥣扣㔴㔴扥搲ㄴㅢ㜸㈲㌷㌷㌳摤扢㝣愲㉥攳捦戲㔵愹挷㠳攲搸昷㑡㈳扥攳㠹ㄹ捥㤶愸づ㤱㡦戵昳㤳攷㉦㕤㌹㘳㜸ㄸ㉡戱ㄵ㌵〴㠲慤攷㕣愷㠲〱愱㔵㘱㡦〳㘶㡡㠹〹㝢ㄶㅣ㙣挷㜰㈷㐰㐵慤㔳㥡㈲㤷㈷㔶捦晤捡攵㐲敢㌶晤户戴捡ㅣ㝤㙢㘹㐳㉢㕢慢㌴㘲つ㑦㈸晢搴㐸㉡敡㕢捥〵〷捤摣戳愷戰戹㙥㔱晦昵㑤收㌵昵㙢挵㜰㘷㐲㐵㝤愳㌴挵㉡㥥㜸㝦攵摣㡦㥤㍣搳㜴㑢捡ㅦ㙥㌰㜵っ慦㘱㌹㑡㈳㔶昲挴挹搳㥥敥㜱㡦慢㐳戲搴摢㙢ㅡ捥敤㄰㠱㑡㙣㥦㔴㉣〴㕢挱戹〶㐵扤敢㠶㌵搷㠶㝣攷愱搹㌲㌴扣晤㕡㠶㍢㈵㉡敡㙢愵㈹㤶昳㐴㑤戲换㠶㘹愶捣愰㠲㌴㙤戰㙢捦昲㡢㉣㑢㘹挴㌲㥥㌸㌵晢扢㌳昷㑡て〴㘵昴ㄸ㥡㌴昹晡攸㕥愸挴㔶㤴ㄱ㠲㉤攱㕣散昹㥣扣戱㌱㥡摥㤹㉦㙦攵づ㥡搶㍣㠹攱捥㡤㡡捡㔴㥡㘲㌱㑦ㄴ晡ㅦ搹㜱攰㜲摢㠰扣㡣〷敥挷捦㜶㙤挲㌲㤴㐶㉣攲〹攵㠵㙥愲愲ㄶ㜲㙥昶㌴挳㡣搱㡢晤㠳昳㈷づ㝥捦㈳昴㑥㈰挳㥤㈴ㄵ戵㐰㘹㡡昹㍣㜱敦捣晡㔱挶㤴晢㘱㐵〷㑥づ㍢搴攵慤㐱㙣㥥搲㠸戹㍣㜱搹㙦昳挲㉥攷㌷㐶㉣㕢搴㔸ㄷ㌰㑣㌵ㅡ㤵搸㍥㈹㉢〴㑢攷摣㥡㝡敦ㅤ㘹摡昸㤹㙥搳㐵扦㜳㡦㍡㍥昴㘴戸戳愵愲搲㤴愶㤸捤ㄳ㔷晤㑢搲㌴〱㠶摥〵攷晤㥡㘵㔷㠶戴㘶戳㤴㐶捣攴㠹㕤扦㔷㍦㡡慥㉣㡣挸戴㤶㙡㤷㑥㘹昵ㄸ㤵搸㡡㥡〴挱愶㜳㙥㜵㜷搱㜲㘶㐳捦挰㘵㑢㌶摥摡扢晦㠷㐸㠶㍢㙤㉡㙡㥡搲ㄴ㔳㜹愲㜸㤰㘶慣慡攳搸㝥挵搵搹㐹昱㔱㙥昱㙣㡡搲㠸㉦㜹㐲昹㤳㥡㐲㐵㑤收摣㠹昹挱㘹挲摡㥤愱改摤㜲㐶昹㝡扡搴㌰摣昹㔳㔱㕦㈸㑤昱㌹㑦ㄸ㝣㘶㉣ㅦㅥ㙤〸摢晥昶㍥敦ㄳ㈵ㅦ摤㘳㤳㤴㐶愴昲㠴昲晤搴㉣㉡㙡〲攷づㄷ戴㘳搷慢㈲晢慤㜱㠸敥㔹㤶㜳戳〹挳㤳〸ㄵ昵㤹搲ㄴ攳㜹㘲敡搹挴㠵ㅦ摥扤ㄶ昱㙤戶㌶戰攷愷㠳晤㤸㔵㘹㐴ち㑦㈸㥢攷㍣㉡捡捣㌹搵散捤慤攳收㈴敢㘶㥤敢戰㝢慦㕢㕥㌹挳㤳ㄱㄵ昵愹搲ㄴ攳㜸㘲㜶搷戸㠴昹㔹㈱㝤昲㑢㌲摥て㕦攲ㄳ挷㑣㑡㈳㤲㜹挲愳散换㍤挵攱㐱㝤㑢敢ㅦ㠹㙤㕡㜵㌴ㅤ㤵搸搶㔴〶〴㑢攴㥣㜳昹〷㤵㈳㔲㙢晢愶ㄵㅥ㙡㤹㌷扤㔸㘰㜸㔲愳愲ㄲ㤴愶ㄸ换ㄳ敡愷㉢㤶戲〱捦挳愶愷㑥挹搷㕣㝣改挶㡣㑡㈳攲㜹㐲昷晢㘴愷㔱攵扥㠱㌳换戴挹㌷㔶摥㉤㐱㈵戶愲戲㈰㔸ㅣ攷敥㍦㠸昴扢㥡㤳ㅡ㤰㕥㌴搰摡㙣昸搵㥤っ㑦㡥㔴㤴愸㌴挵ㄸ㥥㈸慤㙤ㄶ摦㜲㜵㘱攸搲捣晢昷摤㡣㘳攷戱㔸愵ㄱ㌱㍣愱晣㐹攵㔰㔱愳㌹㜷攱㐶㐹㐶摥昱㤱㝤ち敦㉣㡢㔶㜹扥㈸㘲㜸㤲愵愲昴㑡㔳㡣攲㠹㤲㤶㜹㕥扢攲捦㠴㙤摡扢收昰扦换㔶㍢戲㤱㑡㈳㐶昰㠴戲㈵慣愵愲㠶㜱敥捡㤸晣ぢ㥡㕤㤵愱㕦㘵㤸㘷㤶摡昵捣㘶㜸戲愶愲㠶㉡㑤昱㌱㑦㠸晡换扥㑦㈶昹昷㤹ㅢ愹捡扢㔵愱敥挲㠶㈸㡤㠸收〹攵㍢捦敦愹愸㐱㥣㉢ㅤ㍡敦攵ㄱ搳戴搰敤换捦㔹㐶㜴㕡ㄹ挵昰愴㑦㐵㐵㈹㑤㌱㤰㈷慡㥦㔴挷㔵愴㉣ち㤹㜳㉡摢㘳愹搷㤰㉤㉣㔲㘹挴〰㥥戸搵㙣戵扡㘱愳扣㍥㈵㌹捦㐲㤹昵昰㜱㔴㘲㕢㔳〵㄰㑣挷戹㡥〷摤㉤㕥攷摢〴ㄷ搴慣㍢攲摥敡㥡㡦〳ㅥぢ晦晦㐷㘲晣㙡愲愱〷㜱改㤷〷㡢㐳㔲㠸挹㙣戱戳㤳晢㔵㈶捣㘰㠹㑦㌱挴㈴㡡㝦㥦挴昵ち搱㙤㤵㍡㠶挷㐲ㄴ愶昹〱摤㌶㠴昰㔰㐶愱敤〸ㄵ㈱攴昳㍡戴〳愱㘲㠴昰㐰㐲搴㑥㠴㜶㈱㠴挷〱ち㘱㥦㘹㑡ㄱ挲捤㌸㠵㜶㈳㔴㠶㄰㙥㠵㈹戴〷愱ㅦㄱ挲㡤㈸㠵昶㈲戴て㈱摣〶㔲㘸㍦㐲〷㄰挲㑤ㄸ㠵づ㈲㜴〸愱搸搷愱挳〸晤㠴㄰㙥㐰㠸㍡㠲搰㔱㠴㜰晣㔳愸ㅣ愱㥦ㄱ挲攱㑢愱ち㠴㡥㈱㠴愳㡦㐲昸㐶㌵㈷㄰㥡昲㍡㜴ㄲ愱㔳〸挱昶㠹㍡㡤㄰ㅥ㘵ㄹ㑣㤷㐲㘷ㄱ晡〵㈱㔸ㅥ㠵捥㈱㜴ㅥ愱慣搷愱㑡㠴㉥㈰㠴敤㑥㔴ㄵ㐲搵〸㘱戳㔱攸㈲㐲㌵〸㘱愹㔳愸ㄶ愱㑢〸㘱愱㔱攸㌲㐲㔷愴捥ㅥ摦攸摦㝥敦㡥ㄲ攰摣捦㘴ㄸㄳ㘲㠸㤵㝥昵㜲攴扦㜹㌹㘹㑤㐹攳っ㘶搱㉣㘰昹㘸㑤㘳挴〱㘶搳㜸攳ㄸ搱散㠴㐰㤴昴㥢㥥㍤ㄶ㕥㥤㘸㐳愲㔵戴㐸摢捡㑥攵攰攰攲㈴㌷㔷昸敢㙢戵㤶昹捤㌰晣㉦搷晦㈳戲ㅢ㔶㡣捡搹ㄹ㕢㔵㜳ㄵ摤㌵愹㘳㔸㤸㜸㍦晦〳晣ち攰㌷〰㔸慢㌲挰㜵〰㌷〰㘰ㅤ换〰扦〳昸〳〰㤶戶っ昰㈷㠰㥢〰戰散㘵㠰㕢〰㙥〳挰㑥㤰〱敥〰戸ぢ〰扢㐴〶戸〷攰㍥〰㙣ㅣㄹ攰〱㠰㠷〰戰愹㘴㠰㐷〰ㅥ〳挰㍥㤳〱㥥〰㜸ち〰㝢㔰〶㜸〶攰㌹〰㙣㑢ㄹ攰〵㠰㤷〰捡攴㠱㔷〰㔴㑣〲昶挸〳㑣捡㘹搴〰戰挳㘵愶戰〳㠰㕦㤸ㄹ㌶扤っ攰〰愰づ〰ㄸ㠲っ攰〸挰〹〰㍣㐲〶搰〰㜰〶〰晦㤰〱㕣〰搴〵㜰㔰ㅥ愸〷愰㍥〰搸㡤捣ㄵㅡ〰㄰〰挰㠱㘴㠰户〰㌴〴〰㜷㤲〱ㅡ〱㜸ㅢ〰っ㑢〶㜰〵搰ㄸ〰捣㑣〶㜸〷㐰ㄳ〰昰㌷ㄹ愰㈹㠰㜷〱挰晢㘴㠰㘶〰摣〰挰づ㘵㠰昷〰扣て〰㔶㈹〳㌴〷搰〲〰摣㔳〶㘸〹愰ㄵ〰㌸慢っ昰㉦〰慤〱㥣㤴〷摡〰㘸ぢ〰㐶㉣㜳㠵て〰㝣〸〰摥㉣〳戴〳搰ㅥ〰㝣㕢〶㜰〷搰〱〰慣㕣〶攸〸挰〳〰㙣㕥〶昰〴攰〵〰捥㉦〳㜸〳攸〴〰愷㠲っ攰〳愰㌳〰ㅣㄴ㌲㐰ㄷ〰ㅦ〱挰㈱㈲〳㜴〵搰つ〰捥ㄵㄹ愰㍢㠰ㅥ〰㜰收挸〰㍤〱昴〲㠰㘳㐸〶昰〵攰〷愰㐶ㅥ昰〷㄰〰愰㔶ㅥ〸〴搰ㅢ〰㑥㌴㤹㈹戴〰㠲〰攰㤰㤳〱㠲〱㠴〰挰〱㈸〳㠴〲〸㤳㍡〱㐷ぢ㥡㠰攳〵㑤挰㔹㠲㈶攰㍣㐱ㄳ㜰㜸愰〹㌸㐰搰〴㥣ㄶ㘸〲㑥っ㌴〱挷〳㥡㠰㈳〲㑤挰㜹㠰㈶攰㑣㐰ㄳ㜰〰愰〹㌸〴搰㠴㝢戶扦㉡〱慥㡦㈶挰攲搱〴搸㍣㥡〰㑦㐷ㄳ攰敢㘸〲㑣ㅣ㑤㠰㤱愳〹㜰㙤㌴〱捥㡤㈶挰愶搱〴㔸㌵㥡〰㕦㐶ㄳ攰捤㈴㘰挴㈴㘰挶㈴攰扣㈴攰扥㈴㘰戵㈴㘰户㈴攰慤㈴攰慦㈴㘰愶㈴㘰愸㈴攰㥥㈴攰愰㈴㘰㤷㈴㘰㤹㈴攰㡦㈴攰㤱㈴㘰㠸㈴㘰㡡㈴攰㠰㈴攰㠲㈴㘰㜹㈴㘰㝢㈴攰㜱㈴攰㜳㈴㘰㙡㈴㘰㙣㈴攰㘲㈴攰㘴㈴㘰㕢㈴㘰㕤㈴攰㔳㈴攰㔵㈴㘰㑣㈴㘰㑥㈴攰㐴㈴攰㐶㈴㘰㍤㈴㘰㍦㈴攰㌵㈴攰㌷㈴㘰㉥㈴㘰㌰㈴攰㈶㈴攰㈸㈴㘰ㅦ㈴㘰㈱㈴攰ㄷ㈴攰ㄹ㈴㘰㄰㈴㘰ㄲ㈴攰〸㈴攰ち㈴㘰〱㈴㘰〳㈴戰攷㐹㘰摦㤳挰㈶㈷㠱㡤㑥〲扢㥡〴㜶㌶〹㙣㘳ㄲ搸捡㈴戰㙦㐹㘰敦㤲挰㐶㈵㠱捤㑡〲㍢㤳〴㜶㈷〹㙣㐵ㄲ搸㡥㈴戰昷㐸㘰晦愱戹晣〷ㄸ㥢ぢ㜰
B34: Decisioneering:7.0.0.0
B35: CB_Block_7.0.0.0:8
B36: 㜸〱敤㝤㜷㥣㔴㐵戶㝦搷㠴㍢㜳㥢㠱㘹㐰挵散愰戸㡡㈸㜶敥㘹㤴㈵っ㘹㈴〷挵戰敥搸攱㌶㡣捣㑣㐳㜷㠳㘰㐲㌱慤㘱捤〱挳晡ㄴ捣㌹慤て㔹攳攸敡㘲㜶搷㘷づ〴搳扡慥㉢㍥搷戰ㄸ㝥摦㙦摤扡摤户扢㙦て攰扡㥦㥦㝦扣㘶晡㔰㜵捥户㑥搵㍤ㄵ㙥搵愹扡户㕤挲攵㜲晤㠰て晦攷愷㠶㠱㥤㘷㉥挹收㡣捥愱㉤改㡥づ㈳㤱㙢㑦㜷㘵㠷㡥捡㘴㘲㑢㈶戵㘷㜳搵〰㘸㙤敤㤰㘷㙢摢戲敤挷ㅡ昵㙤㡢㡣㑣ㄶ愰㕡㤷慢扥㕥慦㠲㝣〷昵昵㔸ㄱ㥤愹昴ㅡㄲ愰㕣扡㐶㔲㐷㔲㑦愲㤳戸㐹㝡㤱㌴㤰昴㈶改㐳搲㐸攲㈱改㑢搲㡦愴㍦挹㌶㈴摢㤲㙣㐷㌲㠰㘴㝢ㄲ收慦敦㐸戲ㄳ㐸挳捥㈰戳㕡㐶㑦㡤ㅦ㡤慢㤹㤹㑢㘷㡣㝤㥢づ㌱换㍣摣攷ㅢ敡ㅢㅡ〸〶挲㐳扤晢㌶戵㉣散挸㉤捣ㄸ挳扢㡣㠵戹㑣慣㘳摦愶㘹ぢ攳ㅤ敤㠹㠹挶㤲㔹改㜹㐶搷㜰㈳敥つ挴㘳挱㘶㕦㌰ㄴ㑡㐵愳捤戵扣㉣晦ㄸ㈳搱捥敢㌷㡣㑣㝢搷㥣愱㉤愳昱㘷换ぢ戱〸㑣㤹挹ㄸㅤ㌱摡㜲㠶㤱攲昵敥搰㌹㉡㥢㕤搸㌹㥦㉣摦散㜴㘶㕥㜶慥㘱攴挶㉦㙣㑦㝡散ㄲ㌲散㔰㝦㐵愸㥦搰㠶捥㤶戴㤱㑡戵㈷摡㡤慥摣戶㉡㠲昲㈱㠶㝣㜱捤戳搲㝤㍡挷㉥㑥ㄸㅤ㉤㐶㐷〷㔸搹摥㥤〷㘷㡤ㄹ戱慥㌹挶㤴㔸愷㔱摢㐹㉤搵昸戸慡㙡㕣搵扤㔴㑢㈰㜳㑢挲㥡㙦㑢㡣㔱㤴㍦㉢㐷搸㜵㤳㔱戳〱㙤搲捥㘴扢愸㙡㡢㔵戵挵慢摡ㄲ㔵㙤挹慡㌶愳慡㉤㔵搵㌶愷慡㙤㙥㔵㕢㝢㔵摢搱㔵㙤昳㠰戱㍥昵㜵㜵㔵敡㜳昸扣挳㠶㥦㍡戰晦搴晢㝦㜷搵㈱㝦㕦昳晡㥢㘲㍤㜴㔳㝦晦㍦㌴户户㙥ㅣ搷戲扡昳挹慥昵㑢昷摤㈰搶㈹㐱㔹㡡戵㑡㜰挸戲ㄳ攷敤㜲捡㥣㈹户㙥扣㙤敥㕥㙢捥㝡挶捣㙤敤〸户㍥㤰㐱昱㡥挲㍤㥢昰慦昸搷㕦㝥㌹昹搴搳扥摦㈱敤㕦扤㐲戰攵戳慤㠸户㉢㘵昱㤶ㄲㅣ㌱昳ㅦ㥢捥㑢晣㜵昴㜵挳晦戹愹昷扦愶敥㉤摥慣㤴攲つ㈵昰㝥扥㌱㝣搴戹㙦㑦㍣慦㙤搳㔷㜷晣㝡攳昹㉣㠹换挵㐲敤挵㠰㜸㑤攱戶㍤㍢㥣ㅢ晤挲戰搶ㄵ挷摦㝣㔶㜶㤳㉦搷㌰ㄸ搲㈹㉤愳愷㘵搰ち㝥愲づ搱戰て㜵㑥㐵ㄷ㤸㘲攴㝥㉡㥤㐳愰ㄳ㉡挷愴㍢㘳敤㕤㍦㤱搲㕡づ㐳愱㉤㘹慣㠵㕥慡㝡㡣ㅣ戱㍡挷㘴㜳搳㘲㤹捥㙣㐳㈷敤㘷㘴㡣慥㠴㤱㉤改㕡昵㥤㠷挴㌲散㔵㌵っ㌴㜶㥡㠳㐲㙢ㄲ㥤戱㍤户挴愹攳㠹㥡ㅡ晣戹慡昷㜲㉡㤹慣愸愱愳戲㥤㉤㜳㘳㤹㥣㡣戱ち㝦㕣㤷㙢㉡挹㠱㜵㌶戳扤㜳愲㤱改㌲㍡㤸〹㙢㜲㐸〹㐸づ㙤㘶㍤攴挷㌸敢㜲㔸㑢㘵晤㔸摢ㄷ摣摤愷愴㌳㥤ㄸ㑤㈷愵㕢ㄶ收㠶㝢昷㥤㙣挴扡㠶㝢㠷〶昶㥤㤹㑢㡥㌱ㄶ㈱攸搷昷〳㑥ㅦち愲敤て㔲㍤㍥攸搷扤㘴昹㐰㠴㜸㕥㌵攱愶㉢愷㥥戵晣愰晤㈶㥤㝡敤攵晡㝢㍦㝣昷戲攰㝤㠴㌵愹〵㐰㠶ㄴ攵攳昷敥㍢愱㥤ㄹ晡扣㉡换愰搷捡搱ㄷ搲㠳㐸愰㠷㤸㌴っ搲愷㈵㍤㌷㥤挹㌵昱㝥㌶㉣㌲㑣㡦㔰摡っ㈲挴㔳㉡敦㔳㝡㜵㑤摥㉦㜰㘲换昵㝦㍣扥㙦昷昸㜹晢ぢ摥扥㘴㥦㝥㔲㈱捡㠶㡤㍦㉡挱㥤ㅦ㑥扦戰昷敥ㄷ㡥㕦㌹攷攸晦㝡捡㔵㌵㑢㍣㔱㈹挵攳㑡昰搶㤴戳ㄳㄷ㌷㥥搹晡搰㥦㈶户㑤搸搴㡦搵㡣て晢昴㉦ㄹ㄰㡦㈹摣㠶㤹て㥦昸挶㈱昵攳敦㌹攷慦慦㥥㝣晢敡㘳〵ㅢ愷㉣搴愳㤵戲㜸㐴〹㜶㕦㝦捦挱㐷㍤戵㙥攴ㅤ〷㙥㍣㝣攳㐶攳㜴昱㜰愵ㄴて㈹挱户户扤戵㙥捦捦ㅢ㐷㥦戳昶捤攱捦㜵搶㝥捡㤲㤸㠵ㅡ挳㠰昸㠳挲㥤㝦㝥挷㠶㔵戱戹ㄳ㔷㕥戳㜲摡㐷昱敤ㄷ〸摥敥㘴㉤㡤㐳㘰慢㙡㘹㍣ㄲ攸ㄳ㐰戴㔶㤰㐶㝢㉤昹㔰㑤〷㔱㍣ㄱ㐴㠸晢㔴收㑢㕦㍣㜰昰㔹戳晢㑤㔹㜶摤ㄵ捦摤扣㜸㤷摥㠲搳ち㘹㤱㝢㉢㕤摦㍤㑡昰㐲戰捦挷㔷㑥㝤㝡散ㄹ㝦㥤扦昱挱晤挷ㅥ㈳敥慥㤴攲㉥㈵愸㍣昴㑥㐷慥㉥㜱㠷挲慤㘹戹敥㤲㤱敥〹㉤㔷㝣昵摣搴㡢敦㕢㝤戵攸〵愹戴挸㑣〴戶捡㈲戳㤰㐰㍦ㄸ㐴㍢〴愴搸㈲搱㘱晡㙣㡡て〵ㄱ攲㐶㤵昹㠵愹挱㡦㍥㔸昳㡦愹㤷摣㜵㘰戲㘵㈷攳㐲挱改㤵捣晣㜰〴戶愴㜳ㅥ㐱愵扦〲搱㡥〴㐱攷っ攸扦㈶慢つ㐴㠸㙢㔴㍥て敥㜹㝢㜲捤㐷敦㑥昹敤㔵慦捥㕢㝥敤攴㝢〴㘷㜰㌲㥦ㄸ〲㕢㜵㤱㜱㙡㑦㠰㘸㐹㤰愲捥ㄹㅥ愶ㅢ㤴愶㐰㠴戸㕣攵扤晦て户ㅣ摥ㄸづ㡤扢扦㜶㐹晡搸ㄱㄷ㝥㉣㌸㜱㤴㜹捦㐵㘰慢昲㙥愷昶愳㐱戴㜹㈰㐵〶昶㝢㠷改ㅤㄴ㜷㠲〸㜱愱捡㝣敤挵㙦㡤㠸戶㉦ㄹ㜹昲搰㉦扥㌹昳㠰挳㑥愸攵㠴㌵攰㌴㜴㤶捥ち挷㘱㉡㥡㠸㘵㜳敡捥挲ㄱ攵愷扤㥦㙣晥㜶㌲㉥㤳昸捦摦㑥㤰挹㑦㜲㍢搱搳戴晥㝣㄰㙤〱㐸敤昰戱㤱㘰㔴捦㤰㤹〵ㄱ攲ㅣ㔵㈵戳攲㤷㉤㍣㝢攵戳ㄳ敦捡㝥㜹攴攴㐳㙦扡㔳㜰昹㈰㐷㠱戳ㄵ愲㙣戰㍥㑢〹㔶摦戴捦慥㑢愶て㥥㝣搹攵换摡㡤敦て㝤㕦㥣㔹㈹挵㙦㤴㈰ㅡ扢收て㌷㝢ㅥㅢ㜵敡戱㝤敡㡥㕤摥捡㕥㠵て〷敢㈵っ㠸搳ㄵ㉥戹换ㅡ搷㠵慦捦㥤㝡晡㔳ㅦ㡥㌹㉢戶搷㠹㠲换ㄹ㔹愸搳㉡㘵㜱慡ㄲっ攸㍥收敢搵㥢㑥㥦㝡敤愹昷扥摡晥敥挹捦㡢㔳㉡愵㔸愶〴㘳捥㌹攵㥢攴慡扤㈶㥤户㘰敡ㄳ扤慥扥晥㘲㤶挴㉣搴㔲〶挴㐹ち户㜷晦ㅢ〷晥㈲㌶昲愰㜳摦㜸愰戳昹戲扢てㄴ㕣㕥挹㐲㉤慤㤴挵㠹㑡昰搲戰㙦㈷扥ㄳ㌰挶摦昴挲戴㍥戱㘳て晢㔴㥣㔰㈹挵昱㑡㔰昹づ㜲㥡㉣搴戱ち㜷改摦扦㍡愹㝡㤷摦戵㉣慦㝥㌸摡昵捦㍦ㅥ㈲戸摣㤳摤昹っ〴㝡㡦㌹捣挸㑥㐹敦㍢㉤㤳㡥て昷改扦〱㑢㍦ㄳ㐴㍢ぢ愴ㄷ戸昳搳搹㔸㐷㔳挰慢㥦㑤搱㌹㈰㐲㘴㤵敡攰搸〱愷㉥㥢搱愷攵㡥㔳ㄶㅣ攷摤昹攵敤〵ㄷ㤱㔲昵戹〸㙣搵㐸㜱ㅥ戵㜳扡慤㕤〰㔲㌴㑡㌵て搳㉦愴昴㈲㄰㈱㍡㔴摥慢㐶㝥㔵㝦挲㘳挳㈶㍥晣戸慦晦攳㥥攵㥦〸慥㕤㘵摥㤷㈰㔰㜲㔹㤷㌲晤㘵㈰摡㜲㤰挲㘵昹㈲晡攵ㄴ㕤〱㈲㠴愱㔴㉦摢搰㑦㉣㜹㜲昹戸㝢攷昶慦㝤晣㤴㕤〶ち慥㠸㘵㌵㈶ㄵ愲慣挱㈷㤴㘰㠷敢敦敤㜵捡昶ㄷ戴晣晥捡ㅢ㙡㝦摤搲晢㝤ㄱ慦㤴㈲愶〴㤵ㅢ晣㌵挸搵㈵摡ㄴ敥㠳攳㑦敤戸攱㑦ㅢ㐷摤扥晢㕦㈶㠵昶㥡搷㈴戸㐲㤷搷扢〲〱㕦搱㜴捤㍢搴敢㔷ㄳ㌶敦㔰㥦㌵㐷昴摡㈶㠹㕥扦扥ㄲ挹昴敢㐰戴敢㐱慡挷晡㥡昵ㅢ挸扡ㄱ㐴㠸㐳㔵戶敦ㅥ扦收㤹㤳晢敦㌴晥挱㐹㜷づ扣敡㥣挶㈷〵㝤〲ㅣ㤳昵㥢㐹㙥〱搱㙥〵愹ㄹ摥ㅡ㡡敡户㤱㜷㍢㠸㄰㌳㤴㠲㌳㝦㜱晡ㄵ㤷ㅤ戵愶攵捡㐰挳㌱㈷㝣昰敤㤳㠲晥〴㔹敥㍢ㄱ搸慡㌶㜲ㄷ戵摦つ愲摤〳㔲㝣㌷挱慤散㕥㡡敦〳ㄱ㘲愲捡㝣㔹摤〵㔳慦ㄹ㜰攳㤴戳㜷㝤攰晣㠳扦㕥㜴㠳愰ㅦ㐳搶攴㐱ち㔱㔶㤳慤㑡㌰攱挰㕦敦㜷挳昱㈳㕡㑦晡攱㤵愳收㥦㜷攰㠱㘲㐲愵ㄴ攳㤵愰昲㈸戱ㅡ戹扡挴㔸㠵㍢攴戶挷㕦㝥㘷搱晤㤳㙥㝡攳攵挷㡦戸戸捦戳㠲㝥ㄵ㔹愸㌱㤵戲㘸㔱㠲敦捥搴ㅦ㍡攱昲〷挷㍦㌴㜹㤷㈳〲㍢㡤戸㔴㡣慥㤴㘲㤴㤵㔹挵㔵昶愳戲㔰㈳ㄴ㙥挵㡢㙢㤶㔵㑦つㅦ㜴敦㐳慢搲㤷㌴㜴㥣㔹换㐵昸搶慦㠶攸愳搲愵摢〳㝥㥥㙣㙤㈷㙥捡搹敡㙡㈷ㅦ搸㠴㔸㜶㙥㉥ㄶ敦㌰㝡ㄶ㔲㕦㌷挹攳㈰㘲㉦㄰ㄶ㑣㝦㠲攴㡦㈰つ㑦㠲㑣㔷㥥㤵㌱㤹搸㌱昰ㅡㄵ㤶戵晥愱攸ち㕢攲㡣㠲㉦㉡ㄵ㑡㐵㔲㍥㕦㌲攴㡤〵㘲戵㕣㐳㙤改挲㤱昷挳㠶搴散昶慥㘴晡ㄸ戹㤲摣㜹㜴㉣㙢ㄴ㘶〲㐳㤴㙣㜴㝡㘱㔷㌲扢㤳戳㜰㘶㉥㤶㌳㜶㉣㤵ㄵ㤴㤴㈵㥢〹て㤹㤱㤵昹敤㕡㥡散㤰㔸挷㐲㘳搴攲㜶㔳扣㑢㠹ㄸ慢散㜴扣戲㜴㕣挶㔸㤰㤷㤶㤵㘸ㄴ㝣㤸㡢愴敥戲慢㌴㐵㘶戹㥡㕡收愶戳㐶㤷㉣摥㤰捥㘹敤㠹㜹㐶㘶愶㐱て愸㤱㤴㤷扡㉤㐵㙡愹㍦㘴㙡ㄷ㉥ㄴ㕥戳攴敥㜶㙥㙡散攲㥣搱㤵㌴㤲扣つㄹ㤹摣㤲㔹㙣㉦摢ㄵ㐱捣㍣㈱搸愱㠸㍤㉥㥤㔸㤸㙤㐹㜷攵㌲改㡥㘲挹愸攴愲ㄸ摣ぢ挹挹改愴〱敦㐰つ㍦㉥攱慡慥ㄶ挲戵㡦搳㍣㤳㝡戳㐳㘵㐵搸慡㜸㌰敡㝣晢攲㘶㌷㜴〶慥づ㔷搱㘱戰㑤㔶つ摡㡣㌲愹㤷㙡〶㔷〶摡慥㠹敥㘲愲昷慥㡣㤶㘵捣搷摣㝦ㄶ㕣㔵搵㕦㕤晤搸㐵㜰挱㑣㠸㜵㈵㍢㡣㡣㔳㕦捥㍢扢〵㑢愴㍦〵㔲摢㡣㔱愷愲昵㙡㠰㄰㡢挵㤲摡㘳摡㤳戹戹摡㕣愳㝤捥摣ㅣ㜸㜰㠸搷搷搳戴㘵ㅦ㝤つ㔸晡搳㈴捦㠰戸摤㉥敤㔹㠲㌴户晥ㅣ晦㝢ㅥ愴㙥扣搱㘵挰て敤ㄶ㘲㈸愲㜲ㄴ㜹〱〱晤㐵㤰㕡㉦挸㘶扤㌸扣敤搵搰㔹搵扢㜳㡣㤱㡡挱扦㉤晢㤹㠸搵㜶㥡敥摥㌱㐶㌶愱搳㍤搵㡡㔶扢㔸㐳〸摤㤰㕥攴慥㥣戱㌸㌷㈶㤶㡢搵㜵挲搱〵㝢改〰つ㤱愹捣㄰㔳昶㤶㍣㉢戵㕢挵愰挱㈳㠳㌶㉤扤㈴挳搴㠴㈶㡣㤶敢慡㔶戴攷㡢㐰搹戹㜶搰㑡㥢㕣戱挳ちづ散㈴慣㌵㙢挹㝣㈳㑢㜸扤收㔴慦昹〱扣戴愱㔳搹搴㐴晣攰㕣㝢㐷㜶㈸㑡㍡㍥㤳㕥㌸晦愷搴㐳㕤晡㑢㈰搶愷㜶㈸摡搳㤶㕦ㄳ捣攵慡㕢挴扡㘹㙢㜳搵㔳ㅢ㌹晡晥㈴㙣㌷㔰昶〳晥㤳ㅦ晤㝦昰㥦扢㈷㔹慤て㠸慤㜱敥㜱昲搳搰〹ぢ捤捡ㄸ㜲㥦愰㕥㐶㘰敤摥㥤摣㤰㠸愷搳昳搸㥥晡挸㔸㝥㈷愳㤷㜲㜹㜲晢㐰〸㔱㕤㜱㍦㘱〸昴㙢慦㠳昴ㅥ搵搱搱㘴㘹捣㙡㙦㠰㔵つ㘷愴昶㈶〲㝢㡤㌷搲㤹㌹敤戱戶㔹㠷㡣㥤㌵㍥ㄳ敢捡㡤㡢㈵摡㍢攰㑡㙤挳㕤㌴㤵㕢攴ぢづ㕤摣㤱㕤㉣〶挱ㄸㅢ昰㉤㥢㈸敤愱〴㘵㝥挴㈰搴昳昶愹扦〳㈲〶〲挶敥㡥㜰昱㐷㕦㡢戸扥㡥㘴㍤〸㍡慤㌴㍥晡散㝢㠸㙡敦㤳㤸〳慥摢㈵㐲㠸つ挴㔷晦㠰攴㐳㄰㐱户㈲扢慤晥ㄱ㠸昵ㄱ〳㤰ㄵ㕢㠳慣㔱㝡㈳换㙢昴ㄳ㜰摤㝡て㌲㐱㘷㈵㙢㔵愷ㄵ㜵摡㑤愷捤㐴㙦㈸㜶戴㐵㠳ㄲ㤴昹㌵改㘱㤴攵晥㈷㤵㝣㐹㈵㘳㉣搶㔷㘴㝤㑤搶㜸㄰㘹戱㙦ㄸ搳愰捣搹㘲㥢㤸攲㕢㤲敦㐰㙣ㄶ愳㜵㜵㕡っ愶愲㠷㑦㘶挹㘱㐱慦〲ㄱ〷㠱㈵㑤㔵㡤㤸昵ㄱ摦㝥㙦㌳㔵㉢搸攵愶慡〳摥慤昷㈰ㄳㄳ㤱捥挹㔴㥦㐳戹愳愹㌶㉡㐱㤹㙦㜱㍡㌴つ㘴㈹㍣挸㔴敦ぢ㈲㘶㈱㉡敤搲㡦戱扦㈳愵戳㕤戶㘱㡡㙤㐹戶〳戱搹㘵㝢昲㤴㕤づ戶昴敦㐸收㑥㈰㘲㌶㔸搲㉥㍢㈳㘶㝤挴〶扢㕤づ〱扢摣㉥㑤挰扢昵ㅥ㘴攲㔰愴㜳戲换敢㤵散昲㥡ㄲ㤴㜹ㄸ㡦㠰㈶㘹㠴挱㉣昲㉢ㄵ㡤㌰〴㘲㝤㕦㤲晤㔸扡㐲㜷摡㥦㍣摥〲㜱敢愳攳㜱㈰扥扡㡦㑣㍦㠸愰昷㔱ㅡ㈱㠰㤸昵ㄱ捦摡㡤㐰㑦㘵戹ㄱ㈲挰扢昵ㅥ㘴愲つ改㥣㡣搰㕤挹〸㡦㈹㐱㤹晢㌳づ㑤搲〸㈳㔹攴㐷㉡ㅡ㘱㌴挴㝡ぢ挹ㄸ㤶慥㘰㠴㜱攴愹㤶㤰㠰戲㠱扣愴〹㘴戶㠲〸〳㔱㘹㠴㠳㄰戳㍥攲昷㜶㈳㈴挱㉥㌷挲ㄴ攰摤㝡て㌲㤱㐲㍡㈷㈳摣㕡挹〸户㈸㐱㤹ㅦ戶ㅤ㥡愴ㄱ㘶戳挸㌷㔵㌴挲㘱㄰敢㠷㤳ㅣ挱搲ㄵ㡣㜰㈴㜹捡〸㐷㐳搹㐰㕥㔲ㅢ㤹㐷㠱㠸づ㐴愵ㄱ㘲㠸㔹ㅦ㜱戵摤〸昳挰㉥㌷㠲〱扣㕢敦㐱㈶㍡㤱捥挹〸ㄷ㔷㌲挲㐵㑡㔰收て㑥㐳㔳てぢ戳㈲ㄷ散㌶挰ㄶ㉤捣ㅡ㔲攳摡㍢㜲㐶㐶捥扤ㅢ㔳昸捦㍣㙤㈰攳扤戹摥挸挴ㄲ收㙥攰㌶愹ㄶ㉣㌹戰㐹㥡㕢㔲㔸㠴㤵㉤㜹捣ㅢ搴晦㉤散㝥㜶ぢ㍢戹慣㉢㕡摣昵戰㜰㐲愳㈹㔹摡昵っ戶㌵愲挱㘸㘲㡥㤳㍦搹愴㠶㐲㜳㜱㈳㈳扥㜴愶㉡㜷㠲昳㜸㝢㈳㈴摡㕢㜹挱挷挶㕥摥㐸㤹愸攲攲敡晦㤶愶㑥攷戰捣愵㘹ㄷ㐷挲㌴挹㝣㤲〵㈴ㄹ㄰昱㕢㌵搴㥥〰换昲ㅢ㠷户敥㐳〸㕣㝡㡥㤸㠵㈴㡢㐰㙣㐳敤㘲㐴戵㈵㈰㡤搶扥㔴㔳㝥㌲㍢ㅦ㈹〷㌲昵戱㤰敢挷㠱㌴ㅣて㌲㘵㠲搱〱㌷挷㑦㜵㝣愴㤶㕢㌹㍤㉦〷搱㝥戸㐳戱㕤攷捣㈵㕤㠹戹㤹㜴ㄷ㜶散戹㑡ㅤ㤵挰昹㡢慣㠸㘹㥤昲㤸㠱搶㈹㌷晦ㅢ㍡㘷ㄸ昳㡤㔸慥〵㙥㉣㉣㠱㈷㘱慦㑤㉥㜰㕢㤳㡢晦㝦㉥㠰㕤㌵戸〴㤷㠰〱慤㌵戰㈸敤扤收㔲㔴㤹㜷攸㤸㌴づ愲ㄹ搲㉤㐱戳㙢ㅡ摣ち㍦挳ㄵ慥㑢㍦〱愵晢慦㡤户ㅣ戰攷敦敥晣㐱晤扦ㄴ㙢〳昹搱ㄷ攰愲换敦挴㈷㈱㠹扢㈷㤹攰摥㕥晥㑥慣㥤㐶戳愱ㄹ㤸敢㥢㈵㤵敥挶㡢㤵愰㙣㉢㜰〹戴つ㘴㐹捥㠴㈲晤㉣㄰戱搴㘲㥤㑤搶㌹㘴㥤㘶戱㝥㑢搶戹㘴㜱愳㐹捥㘵捥㘳㙣扥敡㘰㘰ㄶ㝦昴ぢ㤸攲㐲㤲㡢㐰㙣ㅤ散ㄲ㌳㉡捥㐴㠲㠱昸敡㤷ㄲ㜴ㄹ㠸㌸ㅢ㔱㌹㡦㔹㡥㤸昵ㄱ㜳㤰㐷㝥㘵㜸ㄶ搸攵搶扢ち㜸户摥㠳㑣㥣㠳㜴㜹敢搹㔶㠶㐷㔶戲摣慦㤴愰㙣慢散㍣㘸㤲〶戸㥥㐵㍥扣愲〱㙥㠴㔸扦㠹攴㘶㤶慥㌰㤹扢㤵㍣㌵㤹㍢ㅦ捡〶昲㤲㙥㈷昳づ㄰挱㉤㌳㘹㠴㍢ㄱ戳㍥㘲㥡摤〸ㄷ㠰㕤㙥㠴㝢㠱㜷敢㍤挸〴㌷攲㥣㡣㌰慥㤲ㄱ挶㉡㐱搹㥥摤愵搰㈴㡤昰㈰㡢摣㔲搱〸て㐳慣㍦㐲昲㈸㑢㔷㌰㐲户ㄹㄵ㤷㐱搱㐰㕥捥攳〴㍤〱㈲㉥㐷㔴ㅡ攰㡦㠸㔹ㅦ㌱捣㙥㠰攵㘰㤷ㅢ㘰つ昰㙥扤〷㤹戸〲改㥣っ攰慤㘴㠰晤㤵愰㙣㘷昱ㅡ㘸ㅡ挸㔲晣ㄹ㤹敡㝦〱ㄱ㉢ㄱ㤵㌶㜹㤹戱㈱ㄵ㙤昲ち㔳扣㑡昲ㅡ㠸捤㈶㙦㤸㔱㜱㥤愵晢㑤㠲摥〲ㄱ㌷㠰㈵㙤昲㌶㘲搶㐷散㙥戳㠹昶㉥㈴搵㘳晤摥㜲扢慣㠳挴慤㔳㕥㐱㈶㙥㠴㑡㈷扢㙣㕦挹㉥〳㤴愰㙣㤷昱㘶㘸攲㑣㕦晦㤸搹晤㡤攴ㄳ㤲扦㤳㝣ち㈲晡㉡挳搰〱挱敦㝦攳㥥扣〱〲㤷晥ㄹ㌱ㅢ㐹㍥〷戱ㄹ收ぢ㐴戵㝦㠲㤴摤㤳㠵戸〵㈹〷㌲昵㤷㤰敢㕦㠱㠸摢㄰攵㍤ㄴ㑥ㅡ㐴㉢づ挴户ㄲ昱㉣〸挷㘵挲昹搱㌷㈱㠹㕢敦㐱㈶㙥〷慣㘰㉣づ挴收㈰晣晤㜷ㄵ㍣㈷摦㈹㐱搹㡥敡㕤搰㈴㕢㑣つ戶摦挴㈶挰㥣摤㈴ㅡ挴㝡ㅤ㐹㍤㠸捤㌰㙥昲搴㔰㜲㌷㤴つ攴ㄵ㌴㤰搹ㅢ㐴㜰㘳㔵戶㥡㍥㠸㔹ㅦ戱ㄱ昹攴挷搳㝢挰㉥㌷㐲㍦攰摤㝡て㌲㜱ㅦ搲ㄵ㡣㔰昰戴㝤㔸挹〸ㅦ㈸㐱搹捥敥㙡㘸㤲攵摥㠹攵摥㤹攵㝥搴㘲敤㐲搶慥㈰㌵摤㘰昵攸捣慥〳挰㍤㈹ㅤ㑢挲ㅤ㡡挳敤㜵敡㘸㝢㝤㑢扡㜳㍥㍣昷ㄹて摤摥㉤搸㍢挲㥥搴愲昶愴㤱愹㈷㘳㈶㈶㑥㌵摣昱搴攴㡣〸昷㔸㥣昹慥慤敤㔵敦㤴㔷慢愵㙢㤰摡㐱戱㍦ㅡ搰㕡愶晦㤳改捤㈳㔰㈸搴ㄷ㕡戸㑢摦㡤搷搲〴㈲ㅥ㐷㤴搷㔳〲ㄸ㐸挰敥〴㍣攱っ搸㠳㠰㐱〴晣搱ㄹ戰㈷〱扦〰愹㝤ち㠰慤搸ㄴ敢〵戸㥥㍡愴摤㌸㠶㝢〷㝤㔲㌸っ摦戲㌰㥢㑢换㡤㡥摥愹㌱改㈹改摣㤸昶散晣㡥搸㤲晥㈹ㄵ㤸㍤搷攸挲㠶㘰〶晢㠲㈵扣昴晣昹㐶㔲㑦捤㑣㉦捣㈴㡣搶㌱㍦㠷つ㐳㕣ㅦ捣㈶昷ち慢攰㠳ㄷ㍦㙥てっ㉡〴慡ㄳㅦ㔷敤ㅡ㈸㉣摤㐰戱慤〷ぢ慥〷て㠰㡤〵㡢捥㙡捦㜵ㄸ扤㔲㔲㉥挳昵㈹㔸ㄱ扢慣挹扡搴慣戹搸㔸ㄸ搳㍢㌵㍥搳㥥散㘸敦㌲㔸ㄹ㜰㘷昰愰昳㈴㘳づ㜶㔴愷愵戳敤㝣㔴愲㜷㙡ㄶ㍣晦㔹㌶散慥挴㤲㝥㐵㌱搹㤰㙢㔳愳摢扢戲挸㐶搶㈲挳㡤愹㤹㜳搳挷愰挵㉥散散ㅡㅦ㥢㥦晤㔹搴ち挶㑥昵㤱㔵㈳慡㐴㔵㤵愸慦慡晦戱昵愳敤㠵挶摦摦㍣㔲搳㠴㜶㥡换戴挷ㄷ搲㘰㌲ㄷ㍦㘸つ㠹慣㐳㔷敤搳〸昵戰愴攷挲㕥敤㜳㜳て㤷㘵㉤㍡㤷攸㜸㍡㈲扦㘹捡挵扣扥㌷㡡搳㌰ㄸ攴愰昱〷户ㄶ㑥㌷晣㝢㡦摢㍣〳捤愵ぢ愵搲㤶㤷摦㑣摥ㄶ攰㍥㘶ㄳ㈲㡦㉤ち㍤ㄳ㉤㠱戱搲㘶改㑥㐹っ㕢㘸㥦㐲㜰ㅣ㜶㐱ㅢ㔲㤳㘲㜱愳〳㑢攲捥㔸慥㡦ㄹ愱㝢〳㈷摡戳㑡㠶挱戱㌳挶㈶挷收㍡㌳ㄱ敢㌰敡㔳愳ㄶ收搲㤳摢扢昴ㄴ㠸㙣㤷㡡ㄵ㕢っ㔶㙣戱㘴㌵愴㘶昰㜸㠵㌹晥㐲㔷㝡㑥㉣搳㥥㥢摢搹㥥愸㘷㠴㐷㈰㝥ㄶ㙤ㄵ㥤㕦㉥㔸㘱㔰㝥慣戱愴㜴愱㙥㉥㔹㔱摤㐳攱㌶愰改㔸晤㘸搱㔵㐲挳㍦昱㈳㜷摦㌱昰挸扢戴㍥〴摡㙡昱〵㐳㜵㥥捦㝥戰〲㑢ㄱ㤰㠳㤳㜸㡥〰㝣昵㝤〱㘵㐰㝥㕦㐰愰ㅢ㕦摥㜷愸㐲摤㤸昶㐳㔸ㅦ㑡攰㡢捥㠰晤〹昰㠲搴扥〴㐰改〵ㄷ㙦㐱㘳愳㕡〷愸㐶㍥昰挱捤昱㝡㙣㈴换㕤昵㕡㔹挳扤㙣扢攱㥡戹ㄱ㕥㙦㍤㐵愲捤㐴搳㌱㤲㙥㜳搰愲㍦㠳搷㔸㠵㐷戰慡敡戵㔲搷㜱㔹戶㔰搶㌹搳㤰摢攴㘲ㅦㄴ㐱昳愱挴扤搸〲愱扦㙤㝣戰㝣㘲散㜶敢〱㘰戰扤昲㍦愰摤昸搲㌲㡤攴戸㌹㥤搰㠳㤰敡㈱㄰挱ㅤ㔱摥㔳愵搹捤㍢㠰㔸㡢㈸敦〲㜸㜸〲㤰㉤ㅤ㜵挴㍡愴攰挸愳㐷愸㜸㍤㐲散搰昹ち㡥㠲扢昹ち㝥㡦㈹昰搵㠷㔱㠹㡡㠸て㄰攸挶㤷㤷挱戶慡㉥攳〰㘰昴〳〹晣搰ㄹ㌰㥣㠰㕦ㄲ挰㉤㔹㔶戲挶〶戲㥤㘵㍣晢ㄳ〷㜸攰愰㜴捥っ㍢㡥〲ㅣ㜶晣挴愶㥦捤㐰ㄵ㘰㌴昵户㔰㍦㜷㔳扢昱㉤㤹晡㡣㈱㘰㉣〱摣㘹㜵〰㡣㈳㘰㍣〱摣㝣㜵〰㑣㈰愰㤵〰㙥捣㍡〰づ㈲㘰㈲〱摣慢㉤慤㑢㙥搰捡扡搴㔹㤷昲㔳㜲户㄰摣扥㤵昵㌶㤹㑡扥㐳慣愸摥愶㠲扢昹㝡攳㍡㐳搶摢㌴㉡㔱ㄱ搹㤵扢ㄱ㈹愹户改挰攸㌳〸攴㘶戰〳㘰㈶〱戳〸攰晥戰慣户㠳ㄱㅢ攰㔴㙦㝣㔲挴愱攲㘶〳㡦㡡攳㝥㜱户㉡㠱慤攲づ㠵㔴㍦っ㐴㜰㙦搷〲〰㘷㡤ㅤ㠷ㄳ㜰〴〱㝤㥤〱扦㈲攰㐸〲晡〱㔰㙡昶㙤挰摢㡣搹戹㍢㉣捤摥㐶㈵摢㈱㔶㘴昶ㄸ戸㥢㌷晢昶㐸㠶㍦㤷ㅥ愷ㄲ〴攴㤷晢挹摤㠸㤴㤸㍤〱㡣㥥㈴㜰㈷㘷㠰㐱㐰㡡㠰㥤〱㤰㘶㥦㠳㤸戳搹昱㌸㡡㠳搹摢㠱㠷搹㥢㙣ㄹ搸捣㝥㌴㌳㤸挷っ〶〳㈰㡤㠶昱〱㌶挷〷㥥〵昰㑣愳㜱戶㈳㍦愵㙤㤵扢挹搲㘸㥤㔴挲㙤攵㈲愳愵挱摤扣搱戸晤㡣㍦㌸搵愹〴〱昹昵㠱㜶㈳㐲愳㠱㙦㌵㠴〵〸敢ㄹ〲晤捥㠰㉣〱㌹〲戸㕤㉤㡤戶㄰㌱摢〰敤㜳㌲搴㌱挰挰㔰ㄱ㥢㔲摢〰扤㤸㑡㤷㔰改㐸〰㑡㕢ㄷ昷㤴㌷搳扡戸攳㉣つ㜵ㅣ㤵㜰敢戹挸㔰㈷㠰扢㜹㐳㜱㡢ㅡ㝦㉥晤㐴㉡㐱㐰㝥戹㐷摤㡤㐸㐹敢㕡ち㡣㝥ㄲ㠱慤捥㠰㤳〹㔸㐶〰户戴愵愱㑥㐱捣㜱㌰挶攱㘹㠷挶㜵ㅡ攰戰搹ㄴ㥢㝥㕢攳㍡㥤晡捦愰晥搹〰㤴摡㡣㕢搰㥢戱ㄹ㌷愸愵捤捥愴㤲㈳㄰㉢戲搹搹攰㙥摥㘶摣搱挶ㅦ晣捣㔴㘲搹慣つ愱敥㜲㥢晤ㄶㄸ晤㕣〲㡦㜲〶㥣㐷挰昹〴挴〰㤰㌶扢〰㌱挷ㅥ挹攷㤷ㅣ㡣㜶ㄱ昰㌰㥡㘱换挰㘶戴㡢㤹挱㈵㈰戵㕤〰昴㌰晢㠶㑢摥戶㈳搹〷㍡戵搴挱㕤敤㌹㑣㡣㌹㉡㡦㙢捦㘱㌶搲㤰〲㐱㔰㙥ㅤ敥㈸㈷捣戶㐴㐳昲ぢ昱摤捡㐵㐵㉢昳㕤换攵昶愵晡㈰〷戱戹㠸户慤摤㌷〷㤲㡢㜹㠷㌲晥㥣㔶昷挲摣㑡㔲ぢ㝣戱㘷攵㡤㔷㥢摤〷愳㙥晥つ㕦㠰㜶㈹㕡㠳㌶㘵㘱㘷摣挸㘰晢㠲慤㐷攰ㅦ收㐲换ㄱ愶㠷㠰ㅢ㤲㍤户ㄴ摢㜶㜴㉦戶㍥㝡〹㑣㕥㙦㜵摥愱戵㉢ぢ㕦㤵㕢挵戰㡡敡愳㠲㔳ㄷ收㡡㈴戱挵晤㤵〴㘷〷愷㜶㘱敤㥢㠸㘵㤲㍦㤳㠵ㄳ慥捤㕣摦换㌵搰㡦昵扤㐰ぢ㍥戶攵づ㕣㤴㤷㉢㕢㜳摦㜷㙢㜶昳㜹て改㑤㜳攷㌷昹敢ㄹ攳㐳搹戲ㄶ捣㠷戲愵㈳㙣㥡〱㉦ㄶ㥥㔵敦㌰晡换〴昹愸㕣捦攸愹㔱昱㉣㥣㉡㌹慥㤸㔵㐸昶㜷㍤㌵㐳扥敡㘲㤱㠱〵慥ち㑤㑢攴㜰㜶㈵慦㠰挷改㝦㍥㌵〴㡢搴愸㕡ㄲ戲㥥戴ㅥㅡ㙦昱㐵戰㉢晤挸㕡㐵扤愵攴攷搳ㄱ攲㡡换昹戹㜹㠴换ち㤸ㄳ㥥摡〵〰昵攰愷挱㤰㙢㍦㝡挱㥥搴摦㍡ㄱ㘴づ㜴㜲っ㙢戰㜸㜴收昴愶搳㉤㤳挳㌳㈷㝣敡戴㤱㕤愷〳ㅥ攳㕣㍢晣ㄶㅤ㑢晡愴㕡扢ㄲㅤぢ㤳㠶㜴㝡㔸㐳户昴㝤晣㉣敡慢〶〶㔱㍤慡〷扢㈸愳戴攲㈵㌵搶㌳〸㍦摥昳愹㕦㠱㥥㈶敦㥢搰攱搶慦㔲晤㉥㠳㤲㙣昵㌹ㄷ㌷㑡摦慦㜰㑡㑢扥㜶〵㐳㕢ㄹ㡢㘳ㅡて㉢攴㡦捡挸ㅥ㘷㠳㑤㑡㑦㑡搳㜳㙡㘳㑤㘸㌷㔹㍦㡢㝡挲㜵㥡搵愴㘹㜰晤晣戸ㅥ昲㡣慢㜳昱改晢㉣ㅢ㜹捦挷挷㑥㑡户㕥㌶搲敡㉤扣挷㜰㌵㐰扦愴㥣戰㘹扦㐳㥤散㍦㌳㠷㘶摢㤵换㌶ㄹ㕤㜸㠲愶挳㐸敥㥦㕤㌸㝦㍥摥敡㘰㈴㥢摡扢㥡ㄲ摣つ㐹攴㥡㍡摡㔳㐶慥扤搳㤰㜳㉦慥ㅥ慡ち㝥㔱挱㘳㌱㜲㠲㜷㌵㌴㡡㐵㠸㤹ㄳ㍣㙣搵戳ㄱ㕣〳戲昹〹摥㘲㈴挳㥦㑢扦㤶㑡㄰㤰㕦ㅥ㥣改㐶㠴㤳㘲㌲㤴ぢ㙡〵昵慥㈴昰㌸㘷挰㜵〴㕣て㔲换戳ㄵ愵〳㔳挵㘳㈲摣㜸愹敤愴㈷愹扥㤳㕢㍤攸搶ㅡ㥥敡挰㌱㤸㍡摣扣㝢搵ㅦて㘵晡つ㔰晢摣戳捦づ〷搶㈵㑥戲攵摦㕢ㄶ㄰㐸㍣㕢挹晣㙦〲ㄱ㘷摡〰㑣愱慥攰㘶〲㙥㈱㠰㘷㈹扡㈱攰㈵摡〰户ㄲ㜰ㅢ〱㍣㕥攱〰戸㥤㠰㍢〸攰搱ぢ〷挰㥤〴摣㐵〰㑦㘳㌸〰敥㈶攰ㅥ〲捥㜵〶摣㑢挰㝤〴昰昰㐶改搴晦〲昰捣㤶昴㝢㐰晡攳昱攲晤愶愴㌷敢㐵ㄷㄷ㈲㤹㙣㉤昷㔳㌱て㝢ㄴ㉤〷㔶㠱扢昹搶挲㐳㈱昸㜳改て㔰〹〲昲㝢㈹㘸户㌲㈵ㄹ㙥㌷〷㜷㝤㌵㌰晡ㅦ〸扣捣ㄹ昰㈰〱てㄱ戰ㅣ〰戹ㅣ㜸ㄸ戱晥㤶㕦挴晥㜴戴挳㔲攰㔱㘰戱ㄴ戸捡愶㝣搷㐲敥㡦㔱㜹㌷㤵昳〰㐸愹ㄱ㜹敡㐳ㅡ戱戲㈳㠹㘷㐲愴挱㥥愰㤲㥢ㄱ㉢㌲搸㤳攰㙥摥㘰㍣㐴㠲㍦㍣㤶㐵㈵〸挸㉦㑦㤱㜴㈳㔲戲收晣ㄳ㌰晡ㅡ〲敦㜰〶㍣㑤挰㌳〴昰搰㠹㌴搸戳㠸㌹慥㌹昱㔴户㠳捤㥥〷ㅣ㌶攳ㄹ㤴㙥㔵〰㥤ㅣ搳㤱晡〲愴晡㡢㈰攲㐱〰㑡㙤挶㐳㈲㘶挳㝢〹㤰㉤㙥㜸㡦㈰㤹戴攳㥦愹昸㔱挴㡡散昸㌲戸㥢户㈳捦愱攰捦愵晦て㤵㈰㈰扦㍣㡣搲慤㉥㠳っ搵昰㕥〱㐶㝦㤵㐰ㅥ㔴㜱〰扣㐶挰敢〴昰散㡡戴攳ㅢ㠸攵敤㤸㙦㜸昰挶昹ㅤ敤昸ㄶ攰戰攳ㅡ㥢㝥㕢摢㝢㥢晡摦愱晥㍦摢〰㐸㘱つ㐳敦ㄲ戰㤶〰ㅥ㐹改㠶愰㘴ㄸ㕡㐷挰㝡〲㕥〶㐰搶㠴捤戵昴ち㜸㘶㑤㙣〰㘴㡢㕤摡慦㈲㤹慣㠹昷愸昸㌵挴㡡㙡攲〳㜰㌷㕦ㄳ㍣晤㠲㍦㍣㈴㐴㈵〸挸敦㥢愰摤㐵㤷㈱㠷㠰㡦㠰搱晦㑡攰㕢捥㠰㡦〹昸ㅢ〱㍣㌱㈳㙢攲ㄳ挴昲敥㈶㍥㌵敦搰㡣㍦〵〶收㕦㘷㔳扡㈳㌹收挰昳て㉡晤㡣㑡㜹扡㠵㥥〰㙤㈳㘳㠳㜰㘲㠵〹搵〲昰㝦ㄱ收慤㤹愷㕦戸〸戴㍥挵㑢㤷㉦ㄴ㡡挷㘳戸㝣攱昵㕡㌷昷㑡㔳㘱挱㘳㌴㥣づ扢昴㝦㈲㜹㘱㍥昶㤵㔲昶㈹㘴㥣㤳㡤慥㕢戹攳戵户㡥ㄹ昵挰愲搵〷㑦㜸㝦晡㈸㑢㌱ぢ挶愲昱愸㡤㔹搱㕦㈳㘵攳慣㔱㑤㜸㜴戰㘹捣ㄸ㑣㄰戲㌹㥣㠲㠰戸㜴㔶戰ㄱ㍣㔹挹摦㈰㠵昸ㅣ㌱戳㤲㜱㘴㠷㐵搹〴戲昹㑡晥〲挹昰㠷㠷愱愸挴扣㘸㌸晤ㄱ敡㐶愴㌰㉢㤰㤵晣ㅤ昵㝥㑦攰㔷捥㠰ㅦ〸攰ㄳ昸攲㙢〰㌸㌳搰〵㘲昹㥢昹㈶㕢戲敤愰㕦㔵㘳ㄵ㌰㍡捥㜹㘰㐳てち㑡㐷㈳つ㍣㘹㥡捡㈳㜸ㅤ㈰搲ㄴ㝣昵㈱昶慢㉤㔳愸㍤扡㍡㜰㌷㙦ち㌷㤲愱㝣㌸搳㐳㈵㤶㈹ㅡ挰敤㔶愶戰㙤攱昰搵㤱㍡捦㤱㠸摥捥㠰㕥〴㌴㄰搰〷〰搹摥㝢㈳收散〱㜳㜶ㅢ㌶〲㡦戶摦捦㤶㠱㑥㡥㌹㠴㝢㤸㐱㕦㘶戰㤳つ〰㌹〰㑣愸昷㈳愰㍦〱㍢㍢〳戶㈱㘰㕢〲㜶㜱〶㙣㐷挰〰〲㜶㜵〶㙣㑦挰づ㈰㥥摤〰攰挷搳㘴〵〶㕡㠱摤慤挰ㅥ㔶㘰㤰ㄵ搸搳ち晣㐲〵挴摥〸挸㑡搸㤱搹㐲㈱扦戵㐳挰㉤摤收㉣摢搷㤵戵㤳攲づ敦捣摣㤲づ散慡㌳挸㙤㑦㌳挴改㈶晣㌶攰攱捣㐵㍡㠳㈵㕢㑤改搹晥㝣㕡㥥敤敦戵㑤挹㐳改㌲ㄹ㈵㠳㔱㥡摡昷扦㉤㝦昰㍡㥦㥥㠵㉥㍣ㄷ换㌴晣㘸㍢攳㥡戶㤹摣㥥挸愴戳改㔴慥㘹㈶㑥㡣㌴昱㈱晦ㄴ搶㙣愳㙡㌷㐰愳㘳㥥扣戰㥡㉥扥〶㜳ㄱㅦ戵㜵捦敢㑡ㅦ搳㈵㑢㔳㥢攵扢づ愴扤敡敡㤸㡤㥢昹昰戳〷っ攷搹ㄷ〵㘵㘲㝤㔷㘴摣扢摡戳ㅦ攲昸㜳㘹扢㈱扥㘷换攸㤶ㄹ㙤攱㜰㈴ㄵ㑦昹㐳㠹㐰搸ㅦっ挴挳搱㐴㈴㙡昸㝣㠹㔰㈴㠲搷㡡挶愲㕡㔳〱ㅡ〸挶㝤㐱㈳攸ぢ愴晣挱㔰㍣ㄲて㠵㡣收㔸搰㥢㑡㐴ㄳ㐶㍣㤴昴っ㔵敡昵㠱㐸愳敦づ攲搹摦㘲敤㐱搶㈰戲扣ㄶ㡢〰〹慤つ㠰戵愵摢挹扣ㅥㄱㄷ〹㤱ㄴ㐶㑤㕤㕤㤹㙦戱㙣ㅢ㍡晦昰戵愶敤㠳戴戵慦挳捣愵づ㐹攷㐴挵戵挸挴㈸㌱捥㤰戰摣㠳㐱摣㥥㈰ち捥〲㘹晢㈰摡愷㘵㜴㥢敤㠸㡡㌶〴扣〶昰攴㈲㜹〶㕥㝤愰敤ぢ㑥㕦㜰㡡摦戸愸敤〷㜶㍦戰昱㐴戱昵㡣㌱㥢慤㈷愴戴ㄷ㕥㐳愸㝢〱㌵て㌷㐶㈰㤴ㄵ敦〷㡢〱昹㡤㠲换捥㈲㥥挳㔵戲㠹㐲攰搲㠲㠰㔴㙣㜷攲ㄹ挰搸昶㡡摢捥㌰㉢昳㌰ㄲ愳敤ㅣ㠰㌸㐲㉥㉤〲㙡戶㥤㐸㜳捣搷散ぢ〷㠳㕥㥦㉦ㄸて㌷挷攲捤㠶ㄱ昰〶㘳搱㔰搲㌰挲〹慤戹〰つ㈴㔳摥㜰㌸㤴㐸晡搰㡡㡣㔰捣ㅦ〹㈴挲㠱㔰慡㌹ㄲ㠹昹㔳㐱㉤㥡㠷㌶〷愳愹㠰㉦㤰っ愵㘲搱㘰㉡㤴㙣づ挷扤㐶㌲攰㙤㑥㈶㡣㔰㌸攴昷ㅣ愸㑡愲て㐳ㅡ晤〰㤲〳㐱㍣挳㉤晥㜰戲㝥㐹㌲㠲晣㕦㕡㝣愲ち㠹挴㈸昰搹昲挴㐳戸㜸戶ち㠸昱戴㈳㐱㘳㐱摣㥥搱㄰捡摡ㅤ㠷㘸㘹敤㡥〷慦戸㜶㈷㠰攳㔰扢慤㘰㍢搵㙥㡢搲㕥㜸攷愳㍥〹㔰㔹扢㥥㌱㄰昲攳ㄹ㙢〵挶㔹㠱昱㔶㘰㠲ㄵ㘸戵〲〷㔹㠱㠹㉡㈰㈶㈳㈰㕢挹ㄴ愸捥户㤲愹攰捡㔶㜲㌷慥摡㙡㈵㍡㕢〹〷㈲㜱㈷戸攵つ㘲ㅡㄲ挹挱㘴〶㜰㘸㄰搳ㄱ㘷ち㙤㈶愸搹㈰愲戱㤴㉦㙣昸挳捤㈱慦㉦ㄸ昰㠷愳愹㜸㈲攲てㄸ搱㘰㌰ㄴ㡤㐷〲摡慣㍣㌴ㄶち〶㠲㤱㔰㈰㤲っ挴㠲㠹㘴㈲㙥㌴挷〳愹㐴㍣㄰㡥㠴扤ㄸ㕡戴㠳昳搰㔴捡攷つ㐵㈳〹扦搷ㄷて㠶㐳挹㘸㌲㄰㡤挵扣㠶㉦ㄶ㌶㠲攱㤴搷㌳㐳㤵㐴㍦〴㘹昴搹㈴㠷㠲㜸㘶㕡晣㤲〶㌱换攲ㄷ攳挵㙣昰㘵㠳戸搶摥㈰㡥愲扥ㄸ㠸摢㜳㈸〰搲〴㙣㄰㍡㕢㠰捥㑡搷㔹挵㥥挳㉣攱㜸ㄸ㐵扥ㅤ㔲㥦㑢㈱㥦㜷昷ㅣづ㈱㍦㥥㈳慣挰慦慣挰㤱㉡㈰摡㄰㤰㜵㜵㌴㤲攵敢㉡〶慥慣慢㑢ㅣ敢敡㈲挷扡㡡㈳㤱㉣㘸ㄷ㔴愱慥ㄲ㠸㈳攴搲搲愰㘶㕤挵扤愹㘴搸㥢㡡㐵愲捤晥㘰㌸搸ㅣ㡦愵晣捤㝥㈳㘹㠴扣挹㘰搸ㅢ搶收攷愱挱㤸摦ㄷ㐰ㅦ㐴敦昶〶㔳攱㜰㌴ㅣ㘸づㄸ戱㐴㈴ㅣ昷㈵㡤㜰㕣㕢㤰㠷晡愲㌱㝦㌴ㄶ挴㥢愸㠳挱㘰挴ㅢ㠹㌵挷㝤晥㜸ㄴ昵㙣〴愲㠹㜰搲㤳㔴㈵搱㌳㐸愳㘷㐹㜲㈰ㅥ挳攲㤷搴㔵捡攲㑢愸㑣㐴扣㘸〷㕦搶搵㘹昶扡㍡㥥晡㑥〰㜱㝢㡥〶愰㘲㕤捤戳㠴㝣㉥㕥扥户㔲㍦㤵㐹㔹㔷愲ㄳ㐲㔹て愷㌳㈳㜲昸㑤㠳㉢敢㘱㠹扤ㅥ㜸㐷㤷㝤收ㄸ挷㝡㤸㙦攵㜳ㄶ㜰愸㠷〵㠸攳捦愵㥤㡤戸㔹て摥㈴㕥昳捤ㅢ慢搷㥦っ晡㥢愳搱㐴㌴ㅥ㑦〵ㄲ搱㐸ㄲ慦昳㑥㠶戴㜳昲㔰㕦㉣㤰㡣㌵挷㥡搱㕤㥡㠳晥㐰㈴㥥昴㠷つ昴戹愰㉦ㄵづㄹ攱㤰㈷愳搴敢扦㐵ㅡ晤㕣㄰㑦搶㘲ㄵ㙥挰㌹㡢㐵㠰㠴㡡㘳挰㤲搶散戴㕢昳㘲捡㉦〱㜱㝢ㄶ〳㈰慤挹ㅢ㥤捥㍢㥢捥㥢㤹捥㕢㤷㘷㠹㈵攴〳昶昲㡤㥣晡㔵ㄴ㑡㙢ㅥ〷愱戴收搵㘰攵慤㜹〲戸搲㥡㌱扢㌵㠳㠰㐸㙢戶㌹㕡昳㐴㉢㥦ㄵ挰挱㥡㑢ㄱ㘷ち㙤㈵愸㘹捤㔸㈴㄰㑣挶愳挹㔰㌰㥣〸〶㤲捤搱㜰㉣ㅥて㐶愳㐶㈰ㄵ挰搴㈵愵㕤㤷㠷㐶愳戱㘸㈲㠴㔱㉡改て〶㝤㘸搵摥收㈰敥㑥愹ㄴ挶㥡㘰愴戹㔹扢㍥て㑤㠱ㄱ㌲晣㤸昷㐴㡣愰ㅦ慤㍡ㄵ㘸昶愵㡣㤴搷㥦㑡㜹㠳搱㘶捦㐹慡㈴晡つ㐸愳摦㐸㜲ㄳ㠸攷㘴㡢㕦搲慡㤷㔹㝣〹㤵㠹㠸ㄷ愷㠱㉦敢㘱扡扤ㅥ敥愲扥扢㐱摣㥥搳〱愸搸慡捦戰㠴㜱搶㐳㠲㘴ㄵ㤳捡㝡㌸ㄳ㐲㔹て慢挱捡搷挳搹攰捡㝡ㄸ敢㔸て㉤㡥昵㜰㡥㤵捦挳㔰㠵㝡昸㉤攲〸戹戴㐷㐰捤㝡㐸挴晤㠱㔰㈴㤹っ㐵扤㘸摥㠹〴㘶㡢搱㘶㈳㥡昲㠷㈳ㄱ㙦㈰攲搵ㅥ捤㐳㡤㐰㈰ㄹ挱㠸敦ぢ愳㈵〷㐲㜱㡣散ㄸ㘱㘲㍥㈳摥㥣ち㐷ㄲ㜱敤戱㍣㌴㤹昴㈷㔳㠹㤰㌷ㄸ㙣㌶㠲㠹㜰㈸摡捣ㅢ㐸㌸收㑤挶㠳晥㐸㌴敡㌹㔷㤵㐴敦㐶ㅡ晤㜱㤲㈷㐰㍣攷㔹晣㤲㝡㌸摦攲ㄳ㔵㐸㈴㉥〲㕦搶㐳挸㕥て捦ㄲ昴ㅣ㠸摢㜳㌱〰ㄵ敢攱ㄲ㑢搸捥㉡㌸㥡攴㘵㈶㘵㍤搴㕥〶㘱改昴搳㜶㔸搸戶ㅦ㕥〷戸挷㜶㐸㐱㑥㘴晢愶愶㉦㡣昱攵㌲㔳戱㐵㤶㈳敢攷戰戱㔲㘳㙥㔴㙥㜶づ㉦㉦攱㠸㈳㌹㤵㉥戵㐱昱ㄴ㕣㕤㥢㝣㘹搲㡦摢愶㜱搷敥㠳扡摢戲㕣搸ㅤち换㌵㙢愲敦搶㕦㘵㕤挳㌹戳ㅣ㜵㈶晢捥㙢㘰攰㑦㝥挵攵ㄶ昷㜵戲搴愷昶ち㜰户㝣て㤰㕡晢㘳㈹愷㝥搰㠲㘷慢㠷㜴㘰㍢㜴ぢ㡥戲扦㠱㕣挵㔵㑥㘵㄰㔷㕢摣户㠸㐱ㄶ㉣愰戸〶㕣搹搷昷戰昵㜵敤ㅤ挸㉡慦つ〶㍡づ〰搷㐲㤳㙣晤㙢㤱ㄸ〳挰ち㤵㥦戶づ㜱㜳〰昰愷㘲〹㝦㌸㙣〴㐲捤摥㘰挰敢㡤㈶㠲搱㈴收㙦昱㔴㉡ㄹ〹愴㤲㥥㤵㔶ㄹ搷㈳㡤攷㍡㉢戶㠱戱敢慤ㄸ㘵㡤㌷㈰挶戵㠹㠶敦㑦晡昱摣〸捤挸挱愵扤て㕡㍡挱晦〰扣攲〹晥㠷攰㤴㑦昰㍤㌷㈹㉤㠵搷〰敢ㅦ〳改戹ㄹ㝣㝥㍣户㔸㠱㕢慤挰㙤㔶攰㜶㉢㜰㠷ㄵ戸搳ち摣㘵〵敥戶〲昷㔸㠱㝢慤挰㝤㉡㈰攴㔶て昲搲晦㠶㥣㔹攳昲扢ち㘲㔹攳摢搸㙢晣敦㠰㔴慥昱㝥㡥㌵晥〰㌴挹ㅡ晦〷ㄲ愳挶㔷㈳捥㉣戴捦㄰㌷㙢㍣㥡㡣愴㐲捤㤱㌰㝥㠱㈴ㅣ㌴㜰摦つ昹昰晥㐷慣摤晣挱㈴㐶昸㤸攷て㉡㡤扥ㄱ㘹㍣て㕡戱捦ㄹ㝢挸㡡㔱㈶ㅥ㐵㑣づ扦つ㈸っ㔷㘶〳㜸㘹晦㠴㐸晦ㄲ挴敤㜹っ〰ㄶ㐷晢ち搱昲㉡搱扥〶摢㘱捤愵㝤〳㝥㜱㥤晥ぢ㥣㤲㥡昷㜴㉢敤晡㈶〸攵愸㉤㕦攴㉢㕦改㉢㥥戰㑡捡攵㘲摥搲㑦㠲㉢㉤敤戲㔹扡戰愲晡㝥㤳搳㡡敡㈹㉢㥦㙡㕣ぢ㡣晡㈷挴愱搴愵攱㍤㡡捡愸ㄱ㕦㜳㌸ㄶ㑢〶攲㝥摣昴㘲愱㜰㜳㜳㌲ㄸ㑣㘱㜶ㄲ㑢愶攲㔸㑥㙢戵㜹㘸捣㠷昹㘰㈲ㄱ〸愲愷〵㤳挱㐰㜳搰㡢搹つ㤶捣㠱㤴搷㠸攳㤶慢ㄵ愰摥㘶慦㌷㄰㌲ㄲ㠱㜸ち㤳愳㘴㉣ㄴ攱㑡㍢〱摦㑥っ昳㥣㠸㘷㡤㉡㠹㕥㠷㌴㝡㍤〹㝦㈶挷昳戴挵㉦戹㡦㍥㘳昱㡢昱攲㜹昰㘵㐵㝥〶〳攴㤷搸㝤愹慦ㅦ㠸摢昳〲〰〸戸昴㜱㌴㜵挹㡡敡㐵㑢㜸ㅥㄱ攷㤳散挰愴㜲㍥昳㘷〸㘹㝥㝤㈷戰昲昵昰㌲戸戲ㅥ摥㐳㠶搶捡㔶摢〵㤰捡㉤㝥扤㘳攵㜰晢㐹㤶㙣㌷㔰㔴づ户㥡㘴㡢㙦㐲摣㙣昱㈹㌸㌹㝣㐱昸扥㡣愴て㑥㡢㘸㌴ㄲづ昹ㄲ㠹㐴㌲ㅡ㘰㘷㠸㜸㕥戵捡㌸㄰㘹㍣慦㔹戱摤ㄹ㝢摤㡡㔱㈶摥㐲㑣ㅡ敡㉤㘵㈸搹攲昷㠴㐸晦〵㠸摢昳㌶〰〸攰㠱㕡ㅡ㡡敤㕢㘷㘳搶搹㝥㍤敦㔸挲㈱㑣㐰昳挸㔷㌴敢㝣㈸摣昳㉥㠴晣㜸搶㕡㠱㜵㔶㘰扤ち㠸昷㄰㤰挶摣ㅦち昲挶晣〰㕣㘹捣ㄷ敤挶昴〱㔲搹㤸捦㍢ㅡ昳㐳㘸㤲愵て㠰挲㤸ㅦ愹㡣㍤㝦戵〲ㅦ㕢㠱扦愹㠰昸ㄴ〱㘹㤲㘷㤵㐹㜰愵㜸昸〳ち昴㌰㠸摢昳て〰愸㔴㡢㠰㤶て〲搲㐸㕡ㄴ戲攲ㅥ㍦っ㥣搲ㅥ晦㤹㔲愵ㅦ〰愱㘹挰敢㤸摢㑡㄰昱㌹㠴㥣戵戹挵㘳㈸〹㘷ㄵ㉣㠹㕢ㅦ〹㉣㘷〷晦ぢ㤹㌴摥㈸㌰㄰㤶㕦昱㠵挵ㅤつ慥昵ㄱ摣㈴攲っ㐱㙦〱㔷㝣攵㠸昹挶攲㡥㈵〶㐹㤹㥤搸〴慥慣㡣搵昶捡ㄸて㐸攵捡㔸攵㔸ㄹ摦㐲ㄳ换愴户㠲愲㌲扥㔳昹㘹〷㈱㙥戶散㜸ㄴ愳㠸捦搷ㅣ㑦㘰㘶ㅤ㡣㠶攲昱㐴㉡ㅡ㠹〴㐲㜰摡㐵挲㔸挶㝦㙦㤵㜱㈲搲㜸㝥戰㘲㤳ㄸ㘳㜹愵㍤㈸㙢ㄴ㠸晤㘷敥摥㔵搰㑣搳㘸㔳㤰㑦㜹晤㙢㔳挱㉥慥晡㘹攰㤴㔶㝤戵搲愲㑦㠷㔰扥㠵㕢扥㡦㕢挸㥤㈴㕡㘹ㄶ昸昹㉥㔱〷戴慣㠵㕢㙤戵㔰ㄸ攷㙦㜶㌴㜸㍤ㄲ㐱〹扣㔲愰㌰㌸昷㡥昰攷搲づ㐳摣㌴戸㉦搹ㅣ挴搸つ挷㔶ㄴ㍥慥㜰㈸收昳㐷晣搱㄰搶㐱ㄱ㜸㐳晤ㄱ敤昰㍣搴ㅦ㌳㔰㈱㐶挸ㄷ㑡挰㜳㠶㤹㔵㈴ㄸ㌰㝣ㄸ捤攱㐹㑢昸晤㈱敤㠸㍣㌴って〲ㅣ愷愱㈰摥挴ㅣ㑣挴ㄳ捤戱㘸㉡㠶㔵㙦㌸ㅥ昷ㄹ捤㠱㠴挷慤㑡愲晦ち㘹昴㈳㐹㝥つ攲改㘵昱㑢挶昹〶㡢㕦㡣ㄷ摣愹㤲㝤昵㑡ㄸ㈰㍦捥愷愸㙦づ㠸摢攳〱〰〱攷㜱扥慦㈵扣㡢㠸扢㐹扡㤸㤴〳㤹愷ㅦ㠴晣㜸戸㤳㈵〳摢㔸〱㙥㕤㐹捥㜶㔶㘰㠰ㄵ搸摥ち散㘰〵㜶㐴㐰㤶㘰㍥㘸敦敡摡㕤ㄱ㍦愰昲戹㘴㥢㈳㝦〸捥敤ㄵ扤㍣㜹㉣㕥㠶扣〴㑤摥㔵㡤〷搵捤愷攸㙡慡㠶晤㌸㕤㕣ㄱつ㠶㉡㝥㙢捦㠳昵晥つ㍤㙣愵㠵㘵っ㌵敥㠶慦㥥挱〵搷づ挴攵㍡㥥ぢ㉣晤昱て晢慦愰㜱挶扤㙤㘷㙢ㄶ㥢ㄷ昲㌷摡㐶挹㤳㠱摣㥢攸㙢㙤㙡っ戱㕥㔱扥㘷㠱㘳ㅤ扢戵㤲㑤捤攴搳攱捤扣搸挱㠲㘰〸㕦㘸扥㙤㈱㘶㝢ち㜱愷〲ㄷ愷慤㜱〶搴㐸㕡ㅡ戳㌸ㅡ㔱㔳㔵㕤昶㕡㈲戹㠰㔶扦〰挵挷づ愹つ愷敤㕡㤳㐳㜰〵㍢㌹扣ㅣ㘰㜴㝢㑥㍥ㄸ扣㌳攴㐲摦つ挶搱㜲㌰㤳㌶㝣搰昸㐱扥㔰敤搹愸㠸搲㌳㙤ㄵ昳㈸㌶㍢㜳㠴㍡摣ㅦㄶ㐱愱搸ㅤ㘱摡㕥攸㑤捣㘴戱㤹挹㔸㘴㈲捥㐰㈶捣㠸㉤挹慤ㅦ㑢昴ㅥ挰㔸㉣㌱㐸㐵昰㥦慢㜱㙦搰㕡〴㑡ㄶ㐱㥦挹ㄳ㙤攰㡦挴ㄷ㥦晡㤱昲㍦㤷㘷㘴㈳㜷愸㘴㡡㈳挵挰ぢ㐷搵慥㕤㙡㑡昲敦摦㔸ㅡ㤰㥦扦㡣㌰て昷慥ㄹ㈱扣㐸攱〳慡昴㘵慤换㔰㐸挷㌷㤰㥥慣〴愵㉦慥昵昸愱〹搷㠳攷㙡㐰㝢㔷㡢㌰攲散㜰㘲㈹㔲戰㤵换㠶戹㡣㤷㍣っ㙣搳㐰ㄱ㠴戴㔳挱㌳㙢挱㈷㡥〳㤰搶愰㠱摤晡改㐴㜳户挷㐴㌷ㄳ晤ㅢㄳ㍤㙥㤰捦㈷㡥㔱㘸㕥㈶㕥㍤㐴昴㠱㜹㜴㤴攸㜳㑣㌴㡣敦ㄳ㔹㠵㌶㡤㝦㉥搱ㅣ敢昲挶晦愵㡡挸㤱㝦㠴㡡㔰㜵攳ㄸ㐴戶慥㈶戸㥢攴㔰ㄳ挱㤱搴攷㜲ㅤ㌶㔲晥攷ㅡ愳晥ㅦ㍡㔲㑣㐲ち愷㥡攸㐲愹ㅤ㙢愲㔳〹㑡㕦㥢敢攱扥て㉥捥愵㕦っ㡡㥡㤸㠱戸慣㠹㜹㐸㤱慦㠹㑢㜹晤摣つ㌱㙤换ㅤㅤ㙤㌹㜸愸〹㘹慤㌹㐵搶扡㠲攸搹㜹昴㉣愲慦㌲搱攸㍤㍥㤱㔰㘸戳摥慥㈶晡搰㍣㥡晢㍡摡㌵㈶㕡搶㕢㥢㐲搳〸㙥㝤〵㈴㡤㐷〱戳㜵㈶㡥㔹㈹㡡ㅢ㝢て㈶㥥㡢ㄴ㑥㈶㍥ㅣ挵㜱㌴昱㘱㑡㔰晡扡㕤捦搱搰㠴㔲挳攵ぢちㄳ㜳捦㐵㥡㜸㌶㔲攴㑤㝣ぢ㠴㈲〳㤱㘹㘲㙥挴㘸户㠱㘷㌵昶㤹捡っ愶搱敥㈰㥡㕢ㅥ㈶㝡㍥搱㜷㤹㘸㔹㈱㔳ㄵ摡㙣扥昷㄰㥤换愳ㄷ㄰㝤㥦㠹㤶㈶㥥愸搰愶㠹敦㠷愴昱㜸㘰戶捥挴㈷㔸㈹戶搸挴愷㈲㠵㤳㠹挷愱㌸㡥㈶ㅥ慢〴愵㙦敥昵㥣づ㑤㈸戵㑢㝦㄰ㄴ㈶㍥ぢ㜱㘹攲ㄶ愴挸㥢昸㘱〸〵户㍥㑣愳㜱㡦㐵㝢ㄴ㍣㌵慡㡢ㄱ捡っ攰愳愵㜵ㄳ捤㉤㄰ㄳ㝤づ搱㑦㤸㘸㌹㍣ㅦ愰搰愶㠹㥦㠴愴昱㘲㘰戶捥㘸摣㍤㜱攸晡㍤っ挲摣㌹㜱㌲㕡㔸搹愶散敤攱㈱㈵㈸㝤搳慦攷㙡㘸㐲愹㜱㈸つㄴ㐶㕢㠱戸㌴㕡〰㈹昲㐶㝢ㅥ㐲挱ㅤ〸搳っ㉢ㄱ搲㕥〴捦㙡㤷晢㉢㌳㤸敤昲捦㐴㜳搳挲㐴㕦㐷昴换㈶㕡戶换㈱ち㙤ㅡ敤ㄵ愲戹戱㘱愲戹愱愲扤㘶愲㘵扢摣㑢愱㔱㐸㔴挸ㅢ㤰㌴摥〵捣搶㤹昸㙥㉢挵ㄶ户换㔵㐸攱㘴攲摤㔱ㅣ挷㜶㌹㔰〹㑡摦㈳散㔹つ㑤㈸㌵㑥㜸㠲挲挴て㈳㉥㑤扣ㅢ㔲攴㑤扣ㅥ㐲搱つ㤱㘹㠶㐷㄰搲摥〳捦㌲昱㑥捡っ愶㠹㍦㈰晡昱㍣晡㔱愲㍦㌲搱搲㘸〳ㄴ摡㌴摡挷㐴㍦㤱㐷㍦㐶昴㈷㈶㕡㔶㐸㝦㠵㌶㉢攴㔳㐸ㅡ㥦〵㘶敢㑣捣㍤て㠷㔶摣挳攸晡㌲㔲㌸㤹戸て㡡攳㘸攲摥㑡㔰晡㤶㘲昱㉡㌴搱㌰晡ㄷ㈸㍢挲昲敢㜹つ㈱挴攱ㄴ〴搵扦㈴昹ち挴敤㜹㥤㄰㝣挴ㅢ㔶扡㍣〷㕣てㅤ攲㌲摤㌷愰愸戰戵㠸换ち搳㤰㝦扥挲㌶㐱㈸搶㐳㘴㔶搸㍡㠴戴敦挰慢攳敤㄰扦敤㔶㕢〵戴攳摢㥣搴ㅣㄴ㑦㐰㔹㤳搸戱㕤ぢ㍢㔹晥挲挴㥣㌳㐴㝥摣晡て捣㘷〳戴㔳ㅦ㔹㠲㡥攳㠲摤㑥㐳㐲搳摢昵摤扦㉡搸敤㕢㈵㈸㝤㥦愴㠷㡥㘰愸挷㉦㕢愳收㜰愵㜴摣捡㉢晤ㄷ㔲攴慦戴づ㐲㐱㥦慢㜹愵㥦㈱愴昱户戰㘵搳昴晢挵㤷〰㕢㜳㈲户摥㡢攸捦㠱戱㔸㡤昴挹㌲㤷捤㑥㑢ㅢ改戸㤵㐸慢㥢㤶扥〶㡥搷㡦愷〹㐷〸㝡㕤ぢ㌶㈸扣挹㙣㘳㈵ㅢ㝣愶〴愵㙦㠶昴搰㔱㈳㙤搰搷戴〱晤慣搲〶㥦摡㙤搰㥦㔷㐵挷愵㘹〳㍡㕦戵㙤㑤ㅢ挸㉥昴㜱㤱つ〶㄰㑤㡦愸㠹愶晦㔵摢挱㐴换挹捦〷ち㙤㜶收㥤㠸愶敢搴㐴㙢㐴敦㘲愲㘵㘷㕥慦搰扣㜴户扥ㅢ㈴㡤昴㡥攲晦捤㥢㤴㘹搰愴㐷㌶搲㤵㉡㔳㔸愶㌵㈵㍤㜴㑦扡㔱㥤㑣晣㌶㡡攳搸㍤摦㔲㠲搲昷㑥㝡攸㝤挵㥦㑢摦ㄳ㈵㐰㌳愳户㔴㥡昸つ愴挸㌷戳扤㈰ㄴ㜴㜴㥡㘶㘸㐲㐸ㅢっㅥ㥡搹戸㐱㘸㘶慦㈸㌳㤸愳搴㄰愲㜷〷㈶摦捣攸〸挵摦收㙤搲昸ぢぢ㘹搹愲㘲㌳愳慦搴挹〶㉦㔵戲挱㡢㑡㔰晡敡㐹て㥤愶㉣㥤敥㌳㙤㐰㈷愷戴挱昳㜶ㅢ〴㈰㙣愴晢ㄲ晦㙦晥㐲㠰挱〷㤵ㅢ戶㔲㔸ㄷ㜴摣㌶㜷㡣㕦㜷散挵㙡搹昶挰㠸㔵扢㥥昶户改慢慥ㅥ㘱昱〵㝤㤸㑥ㄷ戶愶搲㠵晤㐹〹捡摥ㅤ㌹ㄲ㥡攴搸ㅢ㐵㤹搱㤷捣戱㤷㙥㑥晣攱㈸ㅤ戸晡〱㈰扤慢㍣愳挹挱㐷㐸挷㈶〲㝡㥥㠳㠸㠷慥㑣㤹㘶㌸攱搵㠲慥㐷㘹愲㙥扢㠹㐶㐰㈸攸㌵㌴㥢〹晤㤱摡㈸昰搰㑣㕡〷㠵愲攲㘱㠰慤愱搲慤户㄰㍤〹ㄸ㡢㈵攸挲㉢㕣㜹㘱昴㝣愰搲㤵慦㔲㠲搲ㄷ㐱㝡㘶㐱ㄳ晥攰㈳㌵换㑢捦㥤㉣敦晤昶昲㑥㘴〹攸ち㌳换㑢㜷㥥㌶搹㉣慦ㅣ㌹敥〱搸㙡挳㙥㝤㉡搱昴戱㤹㘸㝡昴戴改㈶㕡㡥ㅣ㜷㈸戴㌹㜲捣㈴㥡捥㌸ㄳ㑤愷㥥㜶戰㠹㤶㈳挷㉤ち㡤㐲㘲攴㤸つ㐹㘳ちㄸ晣扦ㄵ㡤㡢捥㌹㤹挲㙡㕣搴收㜲昵㌰㜲㜴㈱㐵挱挴㠵挱昹㝡ㄴ挷㜱攴戸㑥〹㑡㕦㌳㔹㑢㍦㥣攳㍤㔴扥㠴挱晣㤹㌰摢㉦戳昱〱昱摡ㄴ㝤㑦扤㔲㈶㥢慥㌳昹㈰㝥㠷㍣ぢ摤㠰ㄷ㤸㘵昰摢㘸㤳昰㥥㍥扣〲つ扦ㅡ慥㡥搹攲晤㝤㝣攰搰㝡捤愴㉥㘳㑣慣愵愶㘶昰摥挹扡㔴㙢ㄶ㡦㥡㈷敢昱㡢㔲㌹晣愴㐱搷捦攱㐴〵㑥愷搷㜰㌴㐴㥦攳敦愹㔵㌹ㅥっ㝦ㄲ㘲㐷㌷㤵㘹挲㠲㍤慣挷㡤慢昸摥戳ㅦ㜷㥥㐲㍢ㄲつ挵㝡〰㈹㘹㝢㤳㕦㡤㔸挱㉡挶戶㠸摢㜵㤲㑢㑥㘳搰㈵昱㙢ㄸ挰㙢㐷㠱㔴攳㕣戳ㅣ㐶㐰摣㝡っㅣ昹㤸㡣㈴慥㕡㝡㈷㑢㉦㡥㐷昵挷昱敡㑢㝥戸慣㔷㉦㕥戱昵愹㔹㠴愴㍤㌹昷㌸㘲搵㜵戶挵㌲㤹搸㤲晡捥戶づ愳㙢㑥㙥㙥㝤摢㈲昸㌲昱〶㐲ㅣ慦挱敢捡昵〴捡挳慣搸敢〴㥤㜰搴慡㈷敤摣㤳挰㘱㙢搵っ㜰㥤㑤㜰㠵愳〹收〰慦捤〵㈹㌶㐱㍢㌸㌶ㄳ㠸㘵搰㑤㌳㔸ㅦ㜱㍡㈲戲ㄸ昳㠰捣ㄷ敥㉣㡢摢㘱攷㥥㙢㜱㍢敤摣㡢挱㘵㤱㜵ㄶ戹㐶㕣攰㔸扣昹㤰改㉣㕥愱㜶㌲㘴昱㌱㉣戳㜶挴愵搰㔱㔴㌴晡㝥㘴搱㜲㐰收㡢㐶ㅦ㡦攴㉥戴㜳㔷㔸摣㐵㜶㉥扤㈴戶愲晤挶戱㘸㑢㔸㡥攲愲ㅤ㐷㤶慤㘸户㐰㑦㔱搱敥戰戲㍢挱㥥摤㍤ㄶ昷㐴㍢昷㝥㡢扢搴捥愵㜷㐱ㄶ㡤㙤扤㐶㉣㜵㉣摡㌲挸㜴戶敢㠲搵㑥㈵换㔶㌴㍡㈲㡡㡡搶㙤㘵㜷㍡㤰㜹慢㍤㘹㜱捦戰㜳戹㕡户搹攷ㄸ挷㐲㥣挵ㅣ㡢敤㜳㑥㐹㈱㥥㉦㉤挴㥦慤散捥戵㘷昷㡡挵㍤捦捥攵㕡㕣㔶攸昹㜶敥㕡㜰㙤㐵敢㜲㉣摡㐵㉣㐷㜱搱㉥㈱换㘶㥦昵搰㔳㘴㥦て慣散㉥戳㘷昷戱挵㕤㙥攷㝥㙡㜱㉦户㜱㍤㕣ㅤ攲て㍦㐰捣扣慥㈴戹ち挴㉤戸㐰㤴㜷敥〴㑡换〹㘹㕦愰敡戱㠷昰愵㈵㠸㉢挱摥ㄴ攰㘵ち㕣㐸捡ㄴ㌱㈵攰㑥㡡㝥つ戴〹慥ㅡ㘹〰敤㕡挴ち敦扥㕥挴㑤㡤㙣㤵昸戵㘵㤰扦昹㜷㈸っ㠴㉢㠱搵慥〳攱捦〳〸搶扥ㅣ〸慦〷挷㙥ㄴ㉥㍡㘹㤴㔹㤷慦ㅥ昹㕤攰挸㔱㠲慢㐳㔹〷㌷〲挹㘴戲攱搴㈲㈲㡢㜰ㄳ〲搶愳戹昶昱戸㑡捣戶㡡攱戲㡦挷户〰慦摤ち㔲㍣ㄸ摤〶㡥扤ㄸ㜵㠸ㄷ搵㑤㉦㌰㘴㌱敥㐰㈰摦㜶戹愲戲㌵㠵㘹㡥㔹摥つ㔰㐹㔳戸㤷㉣㕢㔳攸㡦㜸㔱㜶㕣㕦挹散㝥㡦㐰㍥㍢慥愳㈴昷㝥㍢㤷敢㈵挹晤㙦㍢㜷㑦㐴愴㠵㔶㈱攰㙣愱昱㡥挵㕤つ扣㑥ぢㄵ㝡昶㠳㘴搹㡡扢ㄷ攲㐵挵ㅤ〲㠶㉣挲挳〸戰戸晣〸㉥〴㘴ㄱㅥ㐱挰昹㡥㌱搲戱〸㡦〱慦㜵㠳ㄴ㔷搲攳攰搸㡢ㄱ㐰摣㕥って㈷攸㘸㉥昸㈵㕦㈲㥦㈴㜹ち挴㉤㌸㐷㤷㡤戹ㄹ昹戱昹㕢慤㥣昳㜶㈹㠸㈸㠱㙣攵㑦㠳㉢㌸㐷㤷愵㝦〶㠱昲㔶ㅥ戴㑡㕥搴捡㥦〳㔶㝢ㅥ愴戸㤵扦〰㡥扤攴㈳㄰㘷挹昳慤㥣戳㜸㘹挰㤷㄰愰〱㘵㥤㜳摡㙤㙢㕥晢㔹㔹ㄶ戵攸㤷〱㉡㘹㕥慦㤰㘵慢慦㠹㠸摢つ㈵㌸〹㤷搹扤㠶㐰扥㜹捤戴戸慦摢戹㥣㔴㑢散ㅢ㌶㙥㙤ㅢ㈲㕢㍣改攲慣攲㐷㥥敦㝣ㄳ昹攰〷㔱捤挶愸扦愵〲㔴搸挸㌹ぢ〳昵㌲挶戹㑡㍥㈶收㈰挶㈲敡㙦㤳捤愹〶㘵晡㍢㉡㈰㔳捣㔳ㄱ㌳㍤愷ㄳ昹昴㡤㥣㐶攴㘳㠲㔳〴愹敤㕤戲㌹㍢㤰摡搶慡㠰搴挶㤹㐰㍥㐵㈳㘷〰㠵ㄸ敦晣昹ㄸ㝥㠸㔶㘹㕢㐷昶㜱㑡愶慦㔷〱愹㡤㌷敦㝣㡡㐶摥戴ぢ戱愵昶㤸攰㡤㔸㤶㙤〳搹扣〷ㄳ愹扦愷〲㔲ㅢ敦户㠵昴㘷搸㘳㠲昷㔰㤹晥㝤戲㜹晢㤴改㍦㔰〱㤹㥥户捡㐲㝡摥㈲ぢ㌱摥ㅡ昳㌱㜱ㄱ㘲㔲摢㠷㘴昳㡥㐷㤹晥㤱ち㌰搲挸扢㕢㍥㐵㈳敦㙡㠵ㄸ敦㘶昹㤸攰㕤㑣昶捥〱慡㜷ㅥ㠸昴昵㔵㥡戸搲ㄲ㙣愷〴㝣㑢㑡㍤㕥㥢挶扢㥤㑣戱慤ㄲ㡣㘰昶㥦㠰摢挸㕢㔷〳㘲㜵㉦攱戵愵昱敡て㜱㠶㜱㠳㤸㔲昵㤹㝣捡㝤扥愸挶㉦㘵〰㈱ぢ晦㜷〴挴昵㈴㑣晤愹ち㌰搲㜸愳㡡昰㌴㡢㑢昰㙥㈲㔳晣㠳㙣摥㐴㘴㡡捦㔴㐰愶攰つ㠳〱搹捣〴㙦〶㌲挵㐶戲敦㔵㌲晤㜳ㄵ㤰㈹㌸收攷㔳㌴㜲慣㉦挴㌸挶攷㘳㠲㘳戵搴昶扦㘴㜳㤸愶㑣晦㐲〵ㄸ㘹攴㤰㉣㔳㈰攲ㄲㅣ㕡㘵㡡㝦㤲晤戸㤲改㕦慡〰㠱㠲愳愷㌴愲㕥㘲㜶㡥愸㔲㔰㕦㘲昶愷㉣㐱㥤摤散晦〲户㤱㘳㘹摥散晦㕤扤㐱㥡㝤㈵捣摥㠱扣㍡㘸㜶㡥㤹戲㐸㥢㄰㄰ㅣ㉡㔹ち晤㕢ㄵ㘰愴㤱挳㈲〳愶搹㌹攴挹ㄴ摦㤱捤搱㑥愶昸㕥〵㘴ち㡥㙣㌲㠵㡣㜱㐴㉢挴㌸㤲攵㘳㐲づ㌱捣昱〷戰慤㡦㠷㐳㡤扣㤷搰㤱〰㕦㡤ㅣ㐸㠸ㄲ㌶㉦慦㠷〳㡡㐴㔵㤹愸㜷㤵收㘲ㄴ〷ち㠹慡㌱㔱戲攳㤷改攲〰㈰㔱㥡㠹㤲ㅤ㥡愸愲㜲戱㘳㑢㔴扤㠹㤲摤戶㑣ㄷ扢慦㐴戹㑤㤴散㡥㘵㈸㜶㑢㠹㙡㤰愸㐶昶㤳搹㐰㔵㉤ㄶ㠹愳㤲㐷ㅤ昵㜵㘳㑤搳㡥㌵㠷㡥㙣戸㝣敤搳敢㉦㝣昹㔷挳㍦晣昶慡慢㕥㝥敦挲㘷扦㝤㌰㍥晣愹ㄵ㉢㥥㌸攸扦㥥㕤摦㉦㜵㑤搵晤㕦㑦扡收㜸摦扣攳ㄷ愴づ摥㘷晣昱㠷ㅤ㍤摤㌷慤敦㤰敡敡扡扡扤晡晦㘹晢扤㍤㈷㉤㔸㈵ㅥ㝢㝤㐰㤷㤰ㅤ㡢挵戰戶㈳㄰㜶㜹搸挱㘴㌱晡㤸㠵㤵㥤㠹愸㐶挴慤㡦㠷㥤㑡愲㍣㈶㑡㜶㈰愲㡡㉡㠴ㅤ㐹愲晡㤹㈸搹㌱㠸㉡搲挵づ㈲㔱摢㤸㈸搹ㄹ㠸摡搶㥥㈳㍢㠵㐴㙤㈷㔱㡤㙣捦晦㔱昳挸づ挰㘲㡣㘶戶敡攳㘱㐷㤰挵搸摥㉣慣㙣昴㄰ㄶ㕦㌸ㅢ扦㐴敤㈸㔱ㅥ慢搱〸戶㕦搹㘹摦晦挶㥣晢㡣㐶㕡っ㐶ㅥ换㙥㠲㙤㔷㈲摥㉢㐶〸㌶㔷㈹搸㔰㈲㘰ぢ㤵㠲昵㈵〲㌶㑡㈹㔸㔷㈲㘰㍢㤴㠲戵㈵〲㌶㍤㈹㜸户㐴挰挶㈰〵敦ㄴぢ㍣㔶㑤ち㌶〴㠹㜸扢ㄸ㈱㔸昷㔲昰㔶㠹㠰搵㉤〵㙦ㄶぢ㍣㔶扤ぢ㔶戵㐴扣㔱㡣㄰㌴扥ㄴ扣㕥㈲愰扤愵攰戵㘲㐱慦晦〷㉦㌱㠵㡦
B37: Decisioneering:7.0.0.0
B38: CB_Block_7.0.0.0:7
B40: Decisioneering:7.0.0.0
B41: CB_Block_7.0.0.0:6
B43: Decisioneering:7.0.0.0
B44: CB_Block_7.0.0.0:5
B46: Decisioneering:7.0.0.0
B47: CB_Block_7.0.0.0:4
B49: Decisioneering:7.0.0.0
B50: CB_Block_7.0.0.0:3
B52: Decisioneering:7.0.0.0
B53: CB_Block_7.0.0.0:2
B54: 㜸〱捤㝤〷㤸ㅣ挵昱晤昵改㙥㜴扤㤲戸〵㈴㤲〸㤲㐰㈴〹戱㌹ㄸ㠴㜲㐴〱㤰㄰搹搲㠶㔹改搰〵㜱㜷㑡㌶〶㑣戲㘵〴挶㤸㙣㌰㈶ㅡ㙣戲挱攴㥣㜳㌶挱搸〴ㄱ㡣㝦㐴〷㡣㐱㠶晦㝢㌵搳㝢戳戳戳㍡㥤敤晦昷㜹戵㔷㥡慡㝡㕤摤昳扡愷㈷搵捥搴愹扡扡扡㙦昰攱晦晣㌴㜰㘱摢㜹慢扢扡敤戶㌱㤳㍡㕡㕢敤㐲㜷㑢㐷㝢搷㤸〹㥤㥤戹搵戳㕡扡扡晢〱㘰㉤㙣㠱扦慢㜱㘱㔷换㜷散愶㠵㉢散捥㉥㠰ㅡ敢敡㥡㥡㜴㍤晣㕢扢㝦㘱愳㘸㤶搲つㄴ㐰搵㘹㡢愲㍦㐵ㄳ㠵愶〸㔱っ愰ㄸ㐸㌱㠸㘲ㄳ㡡㘶㡡㌰挵愶ㄴ㥢㔱㙣㑥㌱㤸㘲〸挵ㄶㄴ㕢㔲㙣㐵挱晡昵㌶ㄴ㐳㈱〶㙥ぢ㌱㝦搲挴戹昹㈳戱㌶昳扡㍢㍡敤搱挳ㄶ㌸㙤ㅥㅢ㡤㡥㠹㡥㠹㈷攲愹㌱㤱搱挳㈶㉤㙦敤㕥摥㘹㡦㙤户㤷㜷㜷收㕡㐷て摢㙦㜹扥戵愵戰慦扤㝡㝥挷㔲扢㝤慣㥤㡦挴昳戹㐴㈶㥡㐸㈶㑢搹㙣㘶攰㜶㠸㍣㘷搲挴晤㍡敤㔲搷㝦㉢收昶㡣㌹㜷搲挴㌱㜳散敥晦㔶捣ㅤ㄰ㄳ㈱㈷㜷戴攵㕡摡晦㑢㐱ㅢ搹愷挹挹㜶愱㠵㥤㙦摢㥤㉤敤㡢挷愰搹ㄵ㐴㐳㑢㡦㤹搰搵戵扣㙤ㄹ挷搱㈴扢戵昵〰扢㈴㥤摥㌶戹慢㝢扦㕣㘷㕢搷挰㌶昲㘷㜷摡敤〵扢㙢㤳戶㈹慢ち㜶慢ぢ散㙡㙡㕢㤰敢㥣㤳㙢戳ㅢ戸搰摣收昴攱㡣愲摤摥摤搲扤㝡㔰摢㠱㕤昶〱戹昶挵㌶㈱㡤㙤搳㤶户ㄴ㔵㐳〳扥㜵晤㜶〹㙡㤹㜴ㄴ摡搳㌶㘹㐹慥戳㕢㌴㜶㘱㌴〸敢ㄹ㉥戲ㄶㄵ敤攲㤰ㅡ收㉢挵㍥㥢搷搲戶慦摤搹㙥户戲ㄲ昶攴㈸ㅦ㐸〸㜲晡愱捣㤴㔹ㅤ昶㤲ㅡ攰㙥㝣㕣ㄷ搶㘲つ㠳搸㜳㑥㐷㘷ㅢ〶攴慣㡥㐹换扢挷㐶㐶㑦㙦㤱晦挷㐴ㄳ愳㘷摢戹昶戱㤱㌱㤱散攸㜹摤挵挹昶ち㉥愷昴㜰ㄴ搲㈳㔸㝣㐷㠸㝥㌳㘳ㄹ扤ㄳ㑤㈳㈱㔴挳㙢搸攲扤昵㜰慢慢㕦㤸慢㕦㤸慦㕦㔸愸㕦㔸慣㕦㘸搷㉦㉣搵㉦㕣㕣扦㜰㐹晤挲㤶晡㠵㐷搶㉦㕣ち㡣昹㌴昵敦㕦敦㝥㝥㤸㉥㉤㍤敤扣愹㌳慦戹敢愷摢捦㌸㍢㕥㔲摣挸㘵㡥搸〵ぢ㝤㙥昷慥㈸愴㜷㠳戰㜶㘷㥣㤹挹愴ㅥ㐵搳㘸〸愵㕥㐰扢搹昶ㄱ㙦摦㜸攰愲㐷摥ㅡ㝦敤摥㥦ㅤ晡搹㘷昶挹㡡㤳㡡㔴㍡〶ぢㄳて戲㕢昲换㕢つ㕢㝢㠰㤰㐸挶愵㉣㍡㈶㤱㡤㠱挶㐲㡥挳ㄱ㕣挵攲㤹搱昳ち戹㔶ㅢ换搱昴攸㜹㑢㜲换散戱㌱扤㈷㉢㡤㐰㔸㔱㠶㥥㤱㠸敡ㄸ㑤㜱〸愵㥥㜴摢昱㤷攷慥㔹昴散捤㌷捣㕥扢㈰晤㤳㤳㕢㜶晤㐰㜱㕥㤳㜶㈴戱搰攷㤵㑦戱㠶㌴㠴㤵㘱㥣㤹㠹㡣捥搲昴㉤〸愵ㅥ㜲㉢戵ㄷ慥ㅢ晢捦敦㡥㥢戹㜶晦扡慢㍥㜹愶㍥愹㌸㡦㑡愵㝢㘳愱捦㤵㡥㘵つ晢㐰㔸攳ㄸ㘷㘶㍣愵挷搳㌴〱㐲愹扢摤㑡慦㝢㉣㝥搳捥摦㍥㘷晣㈹㙢㜶㥥昳㙣挷㌵㌷㈸㙥挲㔲改㈴㉣昴戹搲挹慣㘱ち㠴㌵㤵㜱㘶挶㘳㝡ㅡ㑤搳㈱㤴扡挵慤昴昶昹晡挸扡㍤㡥㥣㜵晢ㅦ㉦㙣㕢㌲㙦摢㈵㡡晢〹愹㜴㈶ㄶ晡㕣改扥慣㘱ㄶ㠴㌵㥢㜱㘶㈶㤲㝡づ㑤㜳㈱㤴扡摥慣改晢晢㥦㌱㘸挴ㄹ搳㉥㕤㝣攴㐵㡦搴搵捦㔷摣㉦㐹愵晢㘳攱扦㌱戶づ㘰愵昳㈰慣昹っ㍤〳敤㌸㤰愶〵㄰㑡㕤攵戶㈳㝡搰㠸昷㉦ㄸ昲挸扥搷扤扣搷㘹搳㐶㝥㌲㐰つ㈰ㄸ㝦搶挱㄰㝤㕥昹㐳㔰㐸ㅦ捡攲㠷㐱㘰挳㡡攸挳㘹㍡〲㐲愹㑢摣㑡㘳昷㍣㌷㜵㘵挷㈵㌳㑦㥥㌶㘲搵摤㙦摣㌵㔵㜱㔷㉣㤵㉥挴㐲昶挰昶㤶ㄲ㈶㈲㜷ㅡ㡡㐷昸㜱㌷㉣㐷㠹㡣㥥摤搲㍥搶㜵捣捥慤㜲ㄷ㈳㝡ㄱ㡡敢ㅣ㠴㤵㠷攸㌷㌹ㄹ搷〵㥡㡡㄰㑡晤捣慤晥㤵愳捥㙦㥣㍢㝣晡散慢㜳㌷㑦㍥㝢攷㡦敥㔰㍣〸㤰敡㑢㔸攸昳㍡㉦㘶つ㑢㈰慣ㄶ挶㤹ㄹ㡦㘰㍣挱戴ㄴ㐲愹㌳摤㑡敦ㅡ㝥㔵攴捥㈵扦㥢㝥摤〳㤷㍤㜶散扤㤷昶㔷㍣攸㤰㑡摢戰搰攷㑡摢㔹㐳〷㠴戵㡣㜱㘶㈶愳晡㈸㥡㍡㈱㤴㍡搵慤㜴敤㤸㌳晦昴挶㌱て㑣晡捤挲攳㝥晤攰㤹换㉣挵㠳ㅣ愹戴ㅢぢ㝤慥㜴㌹㙢㔸〱㘱慤㘴㥣㤹㠹㠴㕥㐵搳㙡〸愵㑥㜶㉢㍤㙣摥㈷㕦晤戸昰挱挴换挶晥晤慢㐱㕦捥摤㔵昱愰㑡㉡晤㉥ㄶ㐶昸昶㌱敥㡥㈵摥戳㕦㠹改愳ㄹ昴㝢㄰搶㌱㉣㍡㉤ㅥ搷挷搲㜴ㅣ㠴㔲挷扡昵㝣㌲昴搲晡捤㌶扦㙡收㕤ㄷ㝤㌵㑤㉤㝦散㌹挵攳㌶愹攷㜸㉣晣〷愳攸〴ㄴ搷㈷㐲㔸㈷㌱攲攴㐴㑡㥦㑣搳て㈰㤴㕡攵㔶㝦摦㡢扦㝣㌸扡㜲㡦改攷㍣晡搸㑢㝡晤晤㜵㡡㐷㡣㔲晤ㅡ㉣っ㥡㝣㠸摤㌵愷㘳昴㝥㥤ㅤ昹戱㔱晤㈳㤶㍦〵挲㕡ぢ㌱〰搶㘵ㅤ㕤戹搶㘱戱戸㍥㤵慥搳㈰㤴㍡捡つ㝤捣〳㉦㜵㥦㤴摢㘹攲ㅤて㘶㝦㜳昱㈹㔷㉤㔰㍣づ㤵搰愷㘳愱捦摤昶ㄳ搶㜰〶㠴昵㔳挶㤹ㄹ㑦敡㌳㘹㍡ぢ㐲愹㈳摤㑡敢扦扣攰ㅣ戵摦晡改㈷㝥攷晢搷攸㌷扥摥㔶昱戸㔷㉡㍤〷ぢ㝤慥昴㕣搶㜰ㅥ㠴㜵㍥攳捣㡣㐷昵捦㘸扡〰㐲愹㠲㕢改㥢敤〳慥㍥愱攳慣挹㌷慣㤹㌴㘵挸㕥㑦扤愱㠶㄰㡣㍦敢攷㄰晦㐱ㅦ㕥㠴攲晡ㄷっ㜴㌱〴㘶㠲㠸扥㠴愶㑢㈱㤴㍡摣慤晥㡣愹㐷愹ㄹ㔳ㄶ㑦㕤昳挸扥㜷㍦㝡昷㙢昷㈸ㅥ攱㑢昵㤷㘳攱㍦愸晥ち搶昵㑢〸敢㑡㐶㥣㡣捤昳㉡㥡㝥〵愱搴㠱㙥昵㐳㉦㝤㘳㡢㙢昶㝥㜵晣㍤㤹㑢㕥摦㘱搰改㜱挵㜳ぢ愹晥㙡㉣晣㌷㜶〲搷戰搲㙢㈱慣敢ㄸ㝡〶㈶挴敢㘹扡〱㐲愹㌹㙥㍢晥戵㐶摦昵扤昳敥㥣㜶搷散敤づ㡢てㅤ㜷戶摡㡡㘰晣㔹扦㠱攸㜳搷摦㠴㐲晡㘶ㄶ晦㉤〴愶㠹㠸扥㠵愶㕢㈱㤴㥡收㔶扡晤捦搷ㅥ摣戴攷㥡㌹㘷㍦昵昹搵ㅤ㝢捣㜸㔳㙤㑤㌰晥慣摢㈱晥〳敥敦㐰㜱㝤㈷〳摤〵㠱捤㌷慤敦愶改ㅥ〸愵挶扢搵㍦㜵㠵㍡慡攳ㅦ〷㑥㍤昳昴扦㍤扤敤㠴换㜷㔷摢㄰㡣㍦敢㍥㠸晦愰晡晢㔱㕣㍦挰㐰て㐲挸散昱㄰㑤て㐳㈸㤵㜵慢㡦扣㜳敢挵㡢㜲㥦捦㍣敥挴戳扦㝥㙦㙡摤㈵㙡㈸挱昸戳ㅥ㠵攸㌳攵㡦愱㤰㝥㥣挵㥦㠰挰搶㤶搱㑦搲昴ㄴ㠴㔲㌱户搲扦㡣㕡㜵敤慣昳挶㑦㍦昱晣ㅢ摥扤戸㍥㜲攰挰㘷攰摥摦㍤ㄳ㤸摣㤹㕢㠹㜳慢㥥搳戶搸ㄸㅣ搲㙥捣昹㉡㑥㔷㑢挹㔲扡ㄴ㡤ㄶ㤳㤱㕣㍣搷㌸ㅣ㘱㌷昶挴㠸㍢㠷㠱愵㠳㕡摡㡢ㅤ㉢攵㑣㘹摢㠹戹㉥扢攷挴㘹㤴敢㥢搸戱扣扤搸㌵㌴搸㌹慦㍢搷㙤㙦攳昷昵〴愹㉡㌶て攷㤱㜶㤷搴户扤扦搸㠲㕣敢㜲㝢挲慡ㄶ挷扤㥤捦㡤戳挸㡥㝣㙤敦搴㑥晢愸戲户慡㐵ㄳ㜰㤹㘳㠵挴慥㕡㑢挷攵戴㙢搸愴㈵ㅤ㕤㜶扢㌴㙦㔴摢㝥㉤㠵愵㜶攷㍣㥢ㄷ㐹散愲慣敡㄰扡摣㔳搹㔱㜳摢戱愲㌸㌹㉤㡥昰㕡㑢㔳㔶㜵摢敤㐵扢挸㝤㡤摤搹扤㝡㝥㉥摦㙡㙦㔱〱㜱敡㠴㘳敢ち昳搴㡥挲昲慥㐹ㅤ敤摤㥤ㅤ慤㤵㥥〹挵ㄵ㌹㥣㍥ㄷ㘷㜷ㄴ㙤㥣晤㌶昰㔳愷敡晡昵㔳慡㙥昷愰㔳㔰挶敤ㅡ㈳ㅤ攱改攲敤搰攷㕢㔵づ扢㌱〷㘰敤戰ㄶ慤㌶挷㘴晤㑥扤〴㤳戸っ戳㕢㙤愰㘷㥤㜸㐵㠹攸㕤㙢愳愵㡤攵㥥晢晦ぢ慥慦摦摣㕤晢㈹㉢㜰㠹㘱㝡慥扤搸㙡㜷㙥昰㝡㤸㘲㡢昴戳㄰㡤㝢㘲㙢慥挹㕥〳㄰㙡㤵㕡摤戸戲愵搸扤挴㕡㘲户㉣㕥挲㘳㍤㕣㌳㙢㙡㈲戵㔵ㅦ晤㍣㑣晡〵㡡ㄷ㈱㐲愱㍡敢㈵㠲慣㤰晥㥤愳㌷㡥挰晦㝤扦㜸㔱㡦㔲㕡㉥㤶攰捡㔶㔷㘳摢搴㡥捥慥㝥晤㠲搶㜲㝡慥㙢㐹㌷㠷攷㠶㥤㡣昷㌲挵㉢㄰㡤㍢㐱昴㝡㙤愴ㄹ愰〶㕥〲ㅡ搴㌶搹㉥攵㜰攱㑤戶㙥㤵㙢㙣㜳慥攵㑣戶扢ち㥡ㄷ㝤㘶㘰㕢㔹㘵㘱〹ㅢ晦挰㌶㡥㝥㝢㔵昷攴㕣㜷慥㝦ㅢ㉥ㅦ愱㤷㌴㐰愳愴㤴戳挴㤲㠳挴㘶㑡㠷㕣つㄱ挲戲攸㠹㌲㐰っ㑥㈴㙣㌸搸㕥敡晡戹㜲挳㉢㠱戶㙦㡦㤵戰晣〳扤昲㌲㄰慥㑥ㄵ愷搹敤昳㔷㉦戳扢〸㙦戲㌶㐸愵㝦昳㘲戰戹㠵晣㠱摤㉤慤㕤㘳搰搲㘹㥤ㅤ换㤷晤㌷攳㌰㤶㝥ㄵ挲㝣ㅡ㜷挶㈸摥昸㜵〲㕤㜵晤㔷戰㙦ㄶ㉥慣㙢㘲㌴㕡昴㡥ㄴㅣ慤〸昶つ晥㤳㡦晥〳晥ぢ㙤挸搷㌸ㄲ㠸扥㕣㌲㙢〴㝥㘰ㅢㄸ㥡摦㘹换㐵挰㈶㔱挰昶愰戶㠳㍡㍡㤷收㍢㍡㤶㜲㍣㙤㈲㕡搷ㄲ摢敥收㠵戵〱敥㠵㐴戹㘰愸㔴扦㝥ㄵ㔷挳㍣㔷攰㜶㐰㝣敢㉤㠸㐱ㄳ㕡㕢㠷㤹㠸㕤搶摢㌰昵挳㈵㍥㙢ㅤㄶ㜶㤹㘶㜷㜴㉥㙥挹㉤㥣扦㘰捡晣㘹㥤戹昶敥愹戹㐲㑢㉢㉥㔰㉥挴扥扢搴扤㈲㥡ㄸ戳慡戵㙢㤵摡ㄶ㘴昰晡搵愱㑢てㄹ㝢攲昰捤攷晥昶挲ぢㄶ㝣昴搸慢扦㔷㐳㕤㐷搵搵戴㕤ㄱ㝥㌸晥昴㝢㄰㙡㙢挰㌸挹㘰戹昲愳晦〴㕤㝦㐰昱㘷〸㑣ㄵ㐲㍥㘶㡡てㅤ㔵敤㠶晦㌹㕢攸㡦㈸㍥㠶㔰愳㈰戸慤敡㑦㈰捣㐷㠵ㄱ㥦㐳㐰扡㜱㜷㤸慢扢昱慦戰㠶昴〶㝣㙡㌴㄰散㑡㑤敡㌴挹搲㈴㑡㔹〸ㅣ㐸㐰愳敢愸扡戲户㈷㡡〹〱敢㔹扥ㅦ㘰挱〴㝣捤㍡㐸㡣收〰昴㄰㔰敦愸㉡〲㥦㄰搰て〶捤晢ㅣ㉡〶㤳㄰搰〸捤㝣搴㤷㕦昷㄰㘰昵㠷〷㔷㘸㘲搵㈴㘸㜸㐲㥡晥ㅡ㍥ㄵ㐷挸㈰ㄲ㍥㐵〵㠱㈴㝣攲㍡慡㉥㉢愶㄰㘹㌸晥昴㘶愸㑥㝤〴㔸㌰〹㠳搹㥡㈱ㄴ㕢㐰㜸㐸搸捡㔱㔵ㅡ㐱㠴㠴慤〹摡〶㐲㘵㘱ㄲㄲ㠶㐲㌳ㅦ昵㡥㠷〴㥤㠱戹㝡㈵㜷㘰捣つ昹搴户㔰㉥㠸㠰搷㙡ㄱ昰慡敢愸扡挴㌹ㄶ㤱㠶戳ㄵ扢戲挹㉦搷㈴㘰㜷戸昵㈸㡡搱㄰ㅥ〲挶㌸慡摡〷㐱㠴㠰㍤〹㡡㐰愸昱㌰〹〱㔱㘸收愳㥥昶ㄲ㌰づ收㙡〲㤲㡣愹㌷攰㔳ㄳ㔰㉥㠸㠰〷㙢ㄱ昰㠰敢愸扡摣㍡ㄹ㤱㠶戳ㄵ晢愰㔲㜵㕦㑤〲挶挳慤㈷㔰㑣㠴昰㄰㌰搹㔱搵ㄴ〴ㄱ〲愶㄰㌴ㄵ㐲昱捡慢㄰㌰つ㥡昹愸㕢扤〴㑣㠵戹㥡㠰㝤ㄹ㔳㙦挰愷愶愳㕣㄰〱搷搶㈲攰ㅡ搷㔱㜵改㜷㕦㐴ㅡ捥㔶捣㘷㤳㝦㕤㤳㠰〵㜰敢㠳㈸づ㠶昰㄰㜰愸愳慡㔹〸㈲〴ㅣ㐶搰攱㄰㙡づ㑣㐲挰ㄱ搰捣㐷㕤攲㈵㘰㌶捣搵〴攴ㄸ㔳㙦挰愷收愲㕣㄰〱攷搶㈲攰ㅣ搷㜱㥤晦㌲昴〱㠸㌴㥣慤㌸㤲㑤㍥慢㈶〱慤㜰敢㌶㡡㜶〸て〱换ㅣ㔵捤㐳㄰㈱攰㈸㠲㍡㈱搴㠱㌰〹〱㕤搰捣㐷慤昵ㄲ㌰ㅦ收㙡〲㔶㌲愶摥㠰㑦㉤㐰戹㈰〲㡥慦㐵挰昷㕤㐷搵昵敦㐳㄰㘹㌸㕢㜱ㅣ㥢㝣㙣㑤〲㡥㠷㕢㥦㐰㜱㈲㠴㠷㠰㤳ㅤ㔵ㅤ㡡㈰㐲挰て〸晡㈱㠴㍡ㅣ㈶㈱㘰つ㌴昳㔱㉢扣〴ㅣ〶㜳㌵〱愷㌲愶摥㠰㑦ㅤ㠱㜲㐱〴戴搶㈲㘰愹敢愸扡ㄶ扦〸㤱㠶戳ㄵ㘷戳挹㉤㌵〹㌸ㄷ㙥㝤ㅥ挵昹㄰ㅥ〲㉥㜰㔴㤵㐳㄰㈱攰㐲㠲㝥づ愱ち㌰〹〱ㄷ㐱㌳ㅦ戵挸㐳㠰㜵㌱㍣戸㕥㤶慣㈶攱㔲㜸㐲㥡晥ㅡ㍥㔵㐴挸㈰ㄲㄶ搴㈲攱㐰搷㔱㜵㐷㠰搷昴㠷攳㑦㕦㡤敡搴扣㥡㈴㕣换搶㕣㐷㜱㍤㠴㠷㠴ㅢㅤ㔵㉤㐱㄰㈱攱㌷〴摤〴愱㡥㠴㐹㐸戸ㄹ㥡昹愸㤹ㅥㄲ㜴ぢ捣搵㉢㜹ㅢ㘳㙥挸愷㤶愲㕣㄰〱攳㙢ㄱ㌰捥㜵㔴摤㥤㘸㐷愴攱㙣挵晤㙣昲搸㥡〴㍣〸户㝥㠸攲㘱〸て〱㡦㍡慡敡㐰㄰㈱攰㌱㠲ㅥ㠷㔰扣㔱㈱〴㍣〱捤㝣㔴挲㑢挰㌲㤸慢〹㜸㠶㌱昵〶㝣慡ㄳ攵㠲〸搸扤ㄶ〱扢戹㡥慡㍢㈵换ㄱ㘹㌸㕢昱ち㥢扣㑢㑤〲㕥㠳㕢晦㥥攲㜵〸て〱㝦㜴㔴戵〲㐱㠴㠰㌷〸㝡ㄳ㐲慤㠲㐹〸㜸ぢ㥡昹愸敤扤〴慣㠴戹㥡㠰㜷ㄹ㔳㙦挰愷㔶愳㕣㄰〱㠳㙢ㄱ戰戹敢愸扡㙢㜳㌴㈲つ㘷㉢㍥㘶㤳㌷慤㐹挰愷㜰敢捦㈸晥〲攱㈱攰㙦㔰慤扦㐳昴挷㤹愹㡤㐴㤷㤰㔲摦㐳㐰㈱攳㜳ㄶ昸〷㠴㍡ㄶ㈶㈱攳ぢ㘸收愳晡㝢挹㌸〶收㙡㌲搶〳ㅦ搲ㅢ昰愹攳㔰㉥㠸㡣㝦晤慢挶愱昱㝡搷㔱㜵㙢改〴㐴ㅡ捥㔶㌴搶愳挹㕦〲ㄶ㝣㘸摣ㅦ㙥摤㐴挱っ㈵てㄹ〳ㅣ㔵㥤㠸㈰㈳ㄸ㘸㈰㐱㠳㈰搴挹㔰㠵㠰㑤愰㤹㡦晡っ㜵㤸ㄳ㈴㡢ㄹ㑥戸㤲㥣愹㈶㘱㌳㜸㐲㥡晥ㅡ㍥挵扢㔶㐱㈴扣㕦㡢㠴昷㕣㐷搵つ慥ㅦ㈱㤲㤰㌰ㄴ搵愹㜷㙡㤲戰ㅤ㕢戳㍤挵づ㄰ㅥㄲ㠶㍢慡㍡〵㠱㐶攰㑦㡦㈰㘸㐷〸㜵㉡㔴㈱㘱㈷㘸收愳㝥敦㈱㐱慦㠵戹㝡㈵㜷〵㍥戴㈱㥦㍡つ攵㠲〸㜸慥ㄶ〱捦扡㡥慡摢㜰扣㤱㈶〴㐴搹攴愷㙢ㄲ㄰㠷㕢㈷㈸㤲㙣㕤捦㘹㜲摡㔱搵ㄹ〸㌴㠲慢㤳㈱㈸ぢ愱捥㠴㉡〴㝣ぢ㥡昹愸㠷扣〴晣ㄴ收㙡〲昶〱㍥愴㌷攰㔳㘷愱㕣㄰〱㜷搴㈲攰㜶搷㔱㜵㑢昰㕣㐴ㄲ〲愶戱挹户搶㈴㘰〶摣㝡㈶挵扥㙣㕤て〱戳ㅤ㔵㥤㠷㐰㈳戸㍡㜳〸㥡ぢ愱㝥〶㔵〸搸て㥡昹愸敢扣〴㥣て㜳㌵〱昳㠱て改つ昸搴〵㈸ㄷ㐴挰攵戵〸戸捣㜵㔴摤㥥扣〸㤱㠴㠰㈳搸攴㑢㙡ㄲ戰㄰㙥扤㠸㈲挷搶昵㄰㔰㜰㔴昵ぢ〴ㅡ㠱㍦㕤㈴挸㠶㔰㤷㐰ㄵ〲㑡搰捣㐷㥤攷㈱挰㕡〲てづ㡥〲慥ㄳㅣ〹㑦㐸搳㕦㑤㤰昸搴愵〸ㄹ㐴挲㡦㙢㤱㜰㥡敢愸扡㐹㝡〵㈲〹〹㕤愸㑥慤慤㐹挲㜲戶㘶〵挵㑡〸て〹慢ㅤ㔵昱〶改〸晣改敦㄰昴㕤〸㜵ㄵ㔴㈱攱㘸㘸收愳㑥昰㤰愰慦㠴戹㝡㈵㡦〳㍥戴㈱㥦晡ㄵ捡〵ㄱ戰扡ㄶ〱慢㕣㐷搵㙤摡㙢㄰㐹〸㔸挳㈶慦愸㐹挰㈹㜰敢戵ㄴ愷戲㜵㍤愳攰挷㡥慡慥㐵愰ㄱ㕣㥤搳〹晡〹㠴扡ㅥ慡㄰㜰〶㌴昳㔱㙤㕥〲慥㠳戹㥡㠰戳㠱て改つ昸ㄴ㙦晡〶ㄱ㔰愸㐵㐰摥㜵㔴摤ㅦ扥〹㤱㠴㠰㡢搸攴㐵㌵〹戸ㄸ㙥㝤〹挵愵㙣㕤て〱㤷㍢慡扡ㄹ㠱㐶㜰㜵慥㈰攸㤷㄰敡ㄶ愸㐲挰㤵搰捣㐷ㅤ攴㈵攰户㌰㔷ㄳ㜰㌵昰㈱扤〱㥦扡ㄵ攵㠲〸㤸㕤㡢㠰㔹慥愳敡㕥昵ㅤ㠸㈴〴摣捣㈶捦慣㐹挰㉤㜰敢㕢㈹㙥㘳敢㝡〸戸挳㔱搵㥤〸㌴㠲慢㜳㈷㐱㜷㐱愸扢愱ち〱㜷㐳㌳ㅦ㌵挱㐳㠰㜵㉦㍣㌸ㅥ挸㔶㤳㜰㍦㍣㈱㑤㝦つ㥦扡〷㈱㠳㐸㐸搷㈲㈱攵㍡慡敥㤸摦㡦㐸㐲挲ㄳ愸㑥㈵㙡㤲昰ㄴ㕢昳㌴挵㌳㄰ㅥㄲ㥥㜳㔴昵〰〲㡤挰㥦㝥㥥愰ㄷ㈰搴㐳㔰㠵㠴ㄷ愱㤹㡦ㅡ攵㈱㐱㍦〸㜳昵㑡扥〲㝣㘸㐳㍥昵㌰捡〵ㄱ㌰扣ㄶ〱挳㕣㐷搵㍤晢挷㄰㐹〸㜸㡢㑤摥扥㈶〱敢攰搶敦㔰扣换搶昵㡣㠲昷ㅤ㔵㍤㡥㐰㈳戸㍡㝦㈲攸〳〸昵㈴㔴㈱攰捦搰捣㐷つ昱ㄲ昰〴捣搵〴㝣っ㝣㐸㙦挰愷㥥㐲戹㈰〲〶搴㈲㈰攴㍡晣昹〳㡤捦㈲㔲ㅦ敥晢づ㘰㠳㑢ぢ㕡散㤵扣㔱戵㐹〹㘹搵㤳㤶㜷㜵㜷挸㕤戵㐱愵挹ㅤ㜳㍡扡㈷户㜴㉤㙢捤慤摥扣攴㉥ㅣ戴挴㙥挷㍤敦㑥摣晡昶搹㍡㤶㉤戳㡢扡㌴慦㘳㜹㘷挱㥥㌱昹㝦攱㥥㌸搶て㕤㈷户挳敢ㄵ㍥晦摥㙤㕥㠴㔰ㄸ㈵昸搴㌵㍥㡦㠰晥扢㜵㤲摣敤戹戳㉥㡢㘱〰㥢㝢ㄸ㥤摦搲摤㙡て㈸挹㕤㙤㔹㙥㉡㠱㐵㈴ㄲㄴ晢㤷收㉦挱㕤慣挹㠳㑡搳㍡㕢㡡慤㉤敤㌶㍢㘳戰〳㥤㘵㉦㐶搲挰㝥ㅤ㕤㉤㑣㕣ㅥ㔴㥡㡦摢㑣㕤换㜸晦戳戰㝡戳ち㑤㙥㤴㌶㤶㈶戶戴㜷愱ㅡ改㐵㉥㌷㤷收㉤改㔸㠹㥦㜴㉣㙦㙢㥦㤶㕢搶昵㍦搱㉢㡡摤㈲ㅦ改ㅡ㔵慦敡敢㔵㔳㝤搳扦摢㍦搶㍦戰㡤㙤敥㈴㌲づ挳㌸敤敥㐴㈶㌸〹㤳㍡㘲㤰つㄴ搲㠷㜵㡤㉦㘰挹㝦愷搳搳㠵扥㌴〵戶戵攲愷ち㠱㜷捣换扦㤳搹づ㜰晤〵㥡㌳昰㥦㄰㌳愷ㅤ㌸愳㈷㠱攷㍦晡搱㐹攳㡢㠸扣搱昹ㄲ㐳〰摥挴ㄹ㐲捣愱攰㠸挲㤶㠹㤱㐰捤㍦㉣㐳㈵挱㜰㠴㙥搲戳㌸ㄵ户摣〷㤶㘶攵昲㜶㉢㌲〵摡㜲摤㥢㌸ち㔳㌶昰愳㠴㉥搷㌷愹愳慤㉤挷㈱挷㥦㔶㐸㑡㝤㔳㘹挲昲敥づ㘴〴敢ㄲ㠴㡣㑢搷㤴㕢〵㔳㙥㤵㜳㑦扦㜴〰㌳㠸㘴㤹戱㍡ㄶ攷㍡㕢扡㤷戴戵ㄴ㥡愸㌰换攷㝦㘲慣㘲攳㙦〰㤹收㘳收ㄲ㝦㤲㠰㜳慢ㅥ摤㍤〶㜹㌵愴㡥摤㡦ㄱ㕤慦㉣晣㔳晦㘶㠲〹㈶ㅥ搹愱攸慦㄰㡤㤷㍡㘰㜰㌷㥥㑦攵㔶㉤㉣㥦ㅥぢ㡢㑣㑥敡㜷〴攰㑦慦〷㤴ぢ晣㙢㜸ㄹ㘲㠳搹〷晤〱〸捤敡挸ㄵ㜱晦ㅡ㍦㤳敡敦晥㐸慡〹㕤换愹愶㌳捣㝣㤰㐹㐸㌱㐲敡搲㡡㤶愲摤搹㐴挳㍣晣〸慣㠱㤹㈴㤶搳㠷㌸〲敡㔷搷搸㌸愰㈹愸慥ㄹ㈶搶㑥敥㕤㜶敦㡦捣㘶㔴挵晦㜰晦捣㌸戶㍤ㄴ敡〷愹晦㠵搵搱㕦㜳㥤㕥㠱捡昵昱〱扥㈱㠰改㝡㡤慦挲改敦㥢捡搴っ㈴㜰㘸㠰ㅡ攴攷㐵㑣ㅡ㘹㐲㠲㠵㘴㥢㌴捡㡡っ昰㘴㠹㔸㑥㠲㐸㤳昹捤㤲㠵ㅦ㡡㜴摡挵㤰㌳扦㌲ㅢ㠵摤㔱㕦摦㠰慥戶晣ㄹ㜶㔵搵㈲㔸摢㍣㕢搲㐷搴昶㘸㠲愵搰攲㑤戸戱㈰晥㐲晣㔸攷㕢戱㙦㔵ㅤ㍦㠴㐲ㅡ扣㠲ち昵〷㐸戳敥捤戴㠴搸㜱扡〱㕥捤㕦㘵愹昷愰昲〸〰㡢㘶㝦愵㤸㈱挰㝤㔶㥤㘵〱戲戱㜳愴晡〰㈵㌸㑦敡晥っ晣㘷㉣㜱晡㈹て㐷晥戰慦昷攱昸㈱㑢攰㑦戳ㄷ戹㈰㝦ㅦ㘱挱慣〶つ㙥ㅦて〰㐶て㈴昰攳㘰挰㈰〲㌶㈱攰ㄳ〰搸捦㔶㌳戴〱㘵晥〲敥㔱㠰扣㑤㠱〱㜹㝦昵〴昵㤰户ㄹ㠳㙥捥愰敢〱昰㤳昷㌵㙣づ㜹㠳〱ㄹ散晥挰愸搷㍤㡣晡〶攵㠴扤㈱㡣捣搵慥㘰㙦㑢㔸㝢㘷慦ㅥ挵挸㡦摥㑡㠲㌸㡡㘲ㅡ㐳〰㝢㕢〳愳户㈱㤰㈹づ〱㠰愱〴㙣㑢〰戳ㅥ㠴扤敤愰㤵㐷ㅦ㝥敡㔴㘳昴敤〰ㄸ〸㘴攲㠳㠹敢㈱㜰ㄸ攳づ㘷㕣㈶㈹昸〹㘴㘶㠲㄰愸戹㠷㤶て㜷挴㥥扤戱㘲摥㠲㜰戵㈳㠳㌰㠱愱㠲慢㤱戰昶捥搵㔶㈸㠶㙦㥤摥㤹㐱戰㈰㝦捣㜶㌰㑤愶挱ㅤ㘹扢〰愳㜷㈵㤰㤹㄰〱㠰摤〸搸㥤〰㈶㐷〸㔷愳愰㤵戹挲㉦戴㙡㜰戵〷㘰攰㙡〷㑦㕣て㔷㘳ㄸ㜷㑦挶㘵㍥㠳㥦㉢㈶㌱昴挲ㄵ㔳ㅣ㠴慢㈸㠳㌰搷愱㠲慢㌸慣扤㜳挵㥣〸㝣㜱㐱㤴㐱っ㔷㑣㡣〸愰㈲〹㡣㑥ㄱ挸愴㠹〰㐰㥡㠰っ〱捣愳㄰慥戲搰㝡戸㡡愷㙡㜰戵ㄷ㘰攰㡡改ㄴ㈶慥㠷慢扤ㄹ㜷㉣攳㌲昵挱捦搵㜸搸㝡攱㙡〲㈰挲搵㌸〶㤹〸慤㠲慢〹戰昶捥ㄵ搳㈷昰㐵㕡〵㠳ㄸ慥㤸㐳㘱㥡㑣愳㍢慥㈶〱愳㈷ㄳ挸晣㡡〰挰ㄴ〲愶ㄲ挰㤴ぢ攱㙡ㅡ㌴て㔷戱ㅡ㕣捤〰っ㕣㌱昳挲挴昵㜰㌵㤳㜱昷㘵㕣㘶㐹昸戹㘲㙡㠴挳ㄵ昷〰昲昱㙦㠳㑣㥣㄰慥㘶㌳挸挱搰㉡戸㥡ぢ㙢敦㕣㌱搳〲摦㍡扤ㅦ㠳㘰㐱晥㤸㙥㘱㥡㑣㠳换搵晥挰攸〳〸㘴㉡㐶〰㘰ㅥ〱昳〹㘰㜶㠶㜰㜵㈰戴ㅥ慥ㄲ挹ㅡ㕣ㅤ〴ㄸ戸捡㜹攲㝡戸㍡㤸㜱て㘱㕣㈶㔴昸戹㘲ㄶ㠵㜰㘵ㅤち挸挶㑦昸㑣扣㄰〲て㘳㘴㘶㘰㔴㄰㜸〴慣扤ㄳ挸㑣つ㝣敢昴户ㄹ挴㄰挸㜴㡤〰㝥ㄶ〲愳ㄷㄱ挸㔴㡥〰㐰㡥㠰㍣〱捣敥㄰〲ぢ搰捡〴捥㐸㈴㙡㄰㘸〳〶〲㤹攴㘱攲㝡〸㉣㌱敥㘲挶㍤づ〰㍦㠱挷挳搶换㠶挹ㅣつ攱慡㠵㐱㤸慣㔱挱搵㔲㔸㝢攷㡡㐹ㅤ昸搶改㔶〶㌱㕣㌱戳挳㌴㤹㐶㜷戰戵〱愳摢〹㘴搶㐷〰愰㠳㠰㘵〴㌰ㄱ㐴戸㍡ち㕡㤹㉢晣㙣戲〶㔷㕤㠰㠱㉢收㠳㤸戸ㅥ慥昸搴〴扤㥣㜱㤹扢攱攷敡㕣搸㥣挱戶〲㤰挱敥慦㉣㝢㍦扡㘰㡥㠷㄰戸㤲㤱㤹散㔱㐱攰㙡㔸㝢㈷㤰㐹㈱昸攲㔲㍦㠳ㄸ〲㤹ㄹ㘲搶㠳㘷㍤愱㤰㕣㈲晡㉥㌰晡㘸〲㤹㌵ㄲ〰昸ㅥ〱挷㄰㜰ㄱ〰㐲攰戱搰捡挷㘶晣攱攷㑢㠸㠷㍣㑥ㅥㅢ挹〷挷㘶摦〷〶散㌱㤱挴〴摤㠱ㄶ愷搶攳ㄹ昴〴〶㘵搲㠷㥦㍤㘶㝡昴㌲搲㤸〷㈲㐴㥤挴㈰㑣〸愹㈰敡〷戰昶㑥ㄴㄳ㐷昰㐵挶㄰㠳㘰㐱晥㤸㍤㘲㥡㑣㠳㍢搲搶〰愳㝦㐴㈰㌳㑢〲〰愷㄰戰㤶〰㈶㥢〸㔱愷㐲敢ㄹ㘹昱㕡㈳敤挷㠰㠱㉢收㥣㤸戸㥥㤱㜶㍡攳晥㠴㜱㤹ㅦ攲攷㡡㐹㈱扤㜰挵㤴ㄱ攱敡愷っ挲摣㤱ち慥捥㠲戵㜷慥㤸㘳㠲㉦㔲㤵ㄸ挴㜰挵㐴ㄳ搳㘴ㅡ㕤慥捥〱㐶㥦㑢㈰㤳㔰〲〰攷ㄱ㜰㍥〱捣㑢ㄱ慥㝥〶慤㠷慢㘴慤㐳搶ぢ〱〳㔷㑣㑦㌱㜱㌳㔲昱愶㤰晡攷㡣㝢ㄱ攳扥〲㠰㥦㉢收㡦㌸㕣搵摣㕤㌲扢㐴戸扡㤸㐱㤸㘶㔲挱搵愵戰昶捥ㄵ搳㔱昰慤搳㤷㌱〸ㄶ攴敦つ㐸搳㘴ㅡ㕣慥㉥〷㐶㕦㐱攰㥢挱㠰㕦ㄲ㜰㈵〱㙦〱㈰㕣㕤〵慤㠷慢㥡戳晤慦〱〳㔷捣㘴㌱ㄵ㝢挶搵搵㡣㝢つ攳㌲敢挴捦ㄵ㔳㑤㥣ㄹ散㕡㐰㌶晡攴㤲挹㈹挲摦㜵っ捣㉣㤵ち晥㙥㠰戵㜷晥㤸捤㠲㙦㥤扥㤱㐱っ㝦㑣㘳㌱慢挱㌳づ㤷扦摦〰愳㙦㈲㤰㈹㉥〱㠰㥢〹昸㉤〱㕦〰㈰晣摤〲慤㍣㠱㑤挳捦㘵〳㈶戰摢㠰〱㜹捣㝣㌱㐱㍤攴摤捥愰㜷㌰㈸㔷挷㑦ㅥ㔳㔳ㅣ昲敥〴㘴攳愷晦㈶㤴ㄳ昶敥㘲㘴愶戵㔴戰㜷て慣扤戳挷昴ㄷ㌴扡㑥摦换㈰㠶㍤收挰㤸昵昰㑣晦昷〱愳敦㈷㤰昹㌱〱㠰〷〸㜸㤰〰愶捣〸㝢て㐱㉢戳挷㕦㙣〷戰昷〸㌰㘰㡦㈹㌳㈶㈸㉦㡢戸搳晦愳っ晡ㄸ㠳㌲扤㐵搸攳挵㉦攷㍡扣㘲㑥㡢挳摥攳㠰㙣㡥ㅦ㜷敦㌱愷愳昷㝤㈷戳㘰㠴扣㈷ㄸ㤸改㌰ㄵ攴㍤〵㙢敦攴つ㐷㌱㈱敦㘹〶㌱攴㌱㜷挶慣〶㡤敥㙡㍣〳㡣㝥㤶㐰收搵〴〰㥥㈳攰㜹〲㤸㙡㈳攴扤〰㙤㜳㜳㕤挳晢摢昴〰ㄲ㕦〲ㄶ㈴敥敡〹敥㈱昱㜷っ晥㌲㠳㌳㐵挶㍦〴㤹ㄷ攳捣㜵㌵㑦捦㤹㌵㈳㠴扤捡㈰㑣㥦愹㈰散昷戰昶㑥㔸ㅡ挵㠴戰搷ㄹ挴㄰挶㕣㥢㑡㍥攰慤搳㝦㠰搴㝦㈴㌰ㅢっ㜸㠳㠰㌷〹㘰㙡㡥㄰昶ㄶ戴㥥戹㉥㕥敢搴㘰ㅤ㘰攰㡡ㄹ㍡愶㘲㘶搰㠴㐲戲㕦㜸㠷㜱摦㘵㕣㘶搳昸戹㘲ち㑤㉦㕣㌱挱㐶戸㝡㥦㐱㤸㘹㔳挱搵〷戰昶捥ㄵ㌳㜲㠴慢㍦㌳㠸攱㡡㘹㌹愶挹㌴扡昳摡晦〱愳㍦㈴㤰㈹㍢〱㠰㡦〸昸㤸〰㘶昱〸㔷㥦㐰昳㜰㔵㙢ㅦ晡ㄹ㘰攰㡡挹㍣㈶慥㘷㙡晢ぢ攳晥㤵㜱㤹㜸攳攷㡡搹㌶づ㔷㍣戲㤵㑦っ搲㝢搹㘷ㄱ㈰挲搵摦ㄹ㈴〷慤㠲慢㝦挰摡㍢㔷㑣摥ㄱ慥扥㘰㄰搴㈰㝦捣攰㌱㑤昶捣㘲晦〴㐶㝦㐹愰ㅤっ昸㡡㠰昵〴㌰攱㐷戸晡ㄷ戴㥥㔹っ捦㉣〸搸〰扦〱〶㐴㌱愹挷搴敡搹〰敢搰〲捤㍢〸㡡挹㌹㝥愲㤸㤱攳㄰挵㝤㠰㝣晣㐴㌱㕦㐷㠸敡挷㈰㉢愱㔵㄰搵〸㙢敦㐴慤㐶㌱㈱捡㘲㄰搴㈳㝦捣昲㌱㑤㠶摤捣㔸晤戱慣㥢〸㘴〶㔰〰㠰㑦㜴搳㈱〲㤸ㄴ㈴㐴つ㠰搶㐳㔴㐰㈲〴㡥昶〷〱〳愲㡥昳〴昵㄰戵〹㠳㌶㌳㈸㤳㜸晣㐴㌱㜳挷㈱㙡㜰㉤愲㤸搷㈳㐴㙤捡㈰㑣昰愹㈰㙡㜳㔸㝢㈷㡡㠹㐰㐲搴㘰〶㌱㐴㌱ㅢ挸昰㐰愳扢昵つ〱㐶㙦㐱㈰㌳㠵〲〰㕢ㄲ戰ㄵ〱㑣ㅥㄲ愲戶㠶㔶摥晡㘶㈴㙢㕤昰ㄹちㄸ戸㘲づ㤱㠹敢搹晡戶㘵摣敤ㄸ㤷昹㍥㝥慥㉥㠶捤攱慡收慣捥ㄴ㈰攱㙡〷〶㘱㉥㔰〵㔷挳㘱敤㥤慢换㔱㑣戸ㅡ挱㈰㠶㉢㈶づ㤹㈶㝢戸摡ㄱㄸ扤ㄳ㠱㑣㉡ち〰㡣㈴㘰㘷〲㤸㘷㈴㕣敤〲慤捣ㄵ㥥㕡㔱攳ㅣ㝣㌷挰挰ㄵ搳㡤㑣㕣て㔷扢㌳敥㈸挶㘵㙡㤰㥦慢㕢㘰敢㘵〳㘴戶㤰㜰戵〷㠳摣〶慤㠲慢㍤㘱敤㥤㉢愶ㄷ〹㔷ㄱ〶㌱㕣㌱挷挸㌴ㄹ㜶戳〱㐶戱慣㘳〴㌲晦㈸〰㄰㈷㈰㐱〰㔳㤲㠴慢㈴㌴捦〶㤸づ㥡愹搲挰㠰㈸愶㈴㤹愰㥥つ㌰挳愰㔹〶㘵晡㤰㥦㈸收っ㌹㐴搵㥣搲㤹㔱㈴㐴敤挵㈰㑣㉤慡㈰㙡㉣慣扤ㄳ挵ㄴ㈴㈱㙡ㅦ〶㌱㐴㌱て挹㌴ㄹ㜶㐳搴㌸㉣敢昱〴㌲㐷㈹〰㌰㠱㠰㠹〴㌰㙤㐹㠸㥡〴捤㐳㔴㈲㠸愸㈹挰㠰㈸愶㉥㤹愰ㅥ愲愶㌲攸㌴〶㝤ぢ〰㍦㔱捣㉤敡㘵敢㘳收㤱㄰㌵㠳㐱摥㠵㔶㐱搴扥戰昶㑥ㄴ㔳㤵㠴愸㔹っ㘲㠸㘲扥㤲㘹㌲㡤敥㑣㌵ㅢㄸ㍤㠷㐰收㌲〵〰收ㄲ戰ㅦ〱㑣㙦ㄲ愲昶㠷搶戳昵挵㙢摤昲㤸〷ㄸ戸㘲㤶㤳㠹敢搹晡收㌳敥㠱㡣换㥣〸㘹敦〲㙡㙥㝢ㅢ㜹㕦摢㝦扢戶敡㔶扡搴㔰攲㑤昵㜹摤慢㕢㤱挸挰㐵摥扥㜵㤶㜸㈳㍡㈴㌶摣㔴敥攸挴つ戰〶晦攳ㄸ捡㘵㥦㐱挵〳〶晢ㅥ㜵㈱挵攸攱㍤晢挶慢扥慡㝥㥣㐳戹㍣ㅢ摥昳扢㜷㤶攱挷㍡ㄸ㑤ㅣ㍣扢愵搰搹搱搵㔱敡ㅥ㌶て㐹㍡挳昸攸㤰㔲㕤㕤㘴㐲攳㉦ㄱ㌱戰㑥慥㔸㐳㍢㥦㘱戹㠲㍦愵て㉤㙤敦㔸搹㉥慤㘹散攲ㄳ㔴㠴慦晥晤㔹㑤㠸昵昰戳㈳挸ぢ昳晥㍥ぢ敢㐳㈱〷昵ぢ昳〶㌹挱搶㘱搰㐷㑥㥡㌸改㠰㠵㤱戸㥤换挴㤲㤱㜴㈶㤶㐸愴㜳戱㑣戱㤰㉡ㄴ㜲搹㐲㉣㙥挷㘰〸换晤㜴挶㌸ㅣ㘵挲扣㠳㉥搵ㅤ㐱慤づ㍢㔹搱攸㙢散〷㙤㘳㙦㙥〳㕦愷昲慡愰㡡捡㙥攸摦㕦㡤昴㍤攱愳敡愶㜸昹ㄱ〹㤶挵㙤慣昱㘲㤰戵㜱㠵搸挰㥥扥㘰㘱ㅥㅡ攸㐵㘸㠲捥㐱㠴挲つ㌰戰㐱㔶ㅥ㜲㤳㐹ㄳㄷ㝡㜲㝢慣〲㙣〳㘱㤳㥢晥㜸㍡㘹㤷㔵㠴㘵㔳㔸㉡㥦㌶㙡搹㌰㙦〶㌳㝥昷㙦㥥〴挰挱ㄷ㙥㜴愳敢攱慣㜶〴挵ㄲ㐰昵㍡㉣愹晥㜰ち㠳㐷挲挴〵昹搳戰㜲挸慢戳戰㤶ㅣ㘸㜰搴㔹慤㠰搴ㅣ㍤敡愷㠰㜱〴㔵㡥㠰㤰愹扣ㅤ㠵㌱〲〶戸昵㔹ㅤ搰㥤ㄱ㔰捡㐶㑢㠹㙣慥㤴㡥㈴ち㠹㌴〶㐲㌱㤷捦搹改㔲㌶㥥㡥㐷㘲昹㘴㜸愰㘹攳㌲㤴〹て㌲摡㔱搴㌶㌱ㅡ㝤㙡㔳㘸ㅣ〵敡㔴㌴㠴㍤㠴攵㍡摤つ㤷㕥づㄱち㙦〶〳ㄶ敡慣ㄵ㤰㝥愶㔷挲㔶挹昴㉡㔸〲㤸㕥つ㜳㄰搳㥢扢搱昵慥慣㜶㌷㡡愳〱㜵㤸ㅥ挲㜶搱㜴っ㑣㘵愶户㠴㔵㤸晥㍥㕡㕢㘶晡㌸㐰㙡㌳㝤㉣愰搵㑣㙦㘵㉡㍦ㅥ㠵挱昴搶㙥㝤搶〹搰ㅤ愶搳搹㝣㈱ㄹ㡦㘵昰㕣挴㔲愲ㄸ户昳挹㔸㈱㙢愷㘳㤱㘸愹㔴㉡愶愳攱㙤㑣ㅢ㑦㐴㤹昰㔰愳㥤㐴㙤㕢愳搱愷㜶㠰㈶㑣慦㜶㤹戶戸㙡㍦㠴㑢慦㠱〸㠵㠷〱㠰〵㈴昲搳㐶㙡㌵搹搴攴㉥㍣摣㌸昷㈴㈲㐲㜱㍡㥤敢戰愴㜶㠴㔳㠸㍡〳愶㌲㔱㈳㘱ㄵ愲摡㍣㐴㘹㑥㘸㥣扢搴搲㐰㑥㜶㌶昵㥣つㅣ㌸搹挵つ㙤㥤〳摤攱愴㤰挲愳愷昲愹㐸㍣㥥㉡㈴㤲㠹㜴㌶㤶㡦㈶㈲昱㘴㉥㔳㉣愶㔳搱㔸㔸敥挰戳㠵攷愲㑣㜸㌷搳㌸㤹㝦㜶㌷ㅡ㝤㙡て㘸挲㠹敤㜲〲ㅤて慥㠳㑢㕦〸ㄱち㡦㠱〱ぢ戸摦㐵ㅢ㌷㙣捤㙤㔹㜳换つ敦㘹㥣㈹㈲搲ㄴ㤷搱戹づ㑢㉡ち愷㜰㜲〵㑣㘵㑥攲戰ち㈷㠷〴㜲㜲㔰㈰㈷〹㔳捦慦㄰ち㥣㈴摤搰搶慦愱扢㕢㘴㈲㘲㤷搲昱㠴つ㙥ㄲ㠹㐸㌴ㄳ㡦㈷㤳戱㐸㈹㤳㉡㈶㑡愹㘲㌲㥣㌲捤戹ㅡ㘵挲㘹愳〹㈷ㄹ愳搱愷昶㠲㈶㥣散敦攵攴㝡戸昴つ㄰愱昰摥〰㘰㈱㤸㤳戱挶㌹㤶㠸㝤㈸㙥㘵搱㜵攴㘴ㅣ㥣挲挹敤㌰㤵㌹㤹〰慢㜰㌲㈵㤰㤳㐹㠱㥣昰戶戹㌴攲㙥㐸㜰㌲挹つ㙤摤〳摤攱㈴ㄳ㑤收㡡搹㔴㌴㤱㈸ㄶㄲ愹㐴㍥㥢㡦挴㜲昹㘲㈲ㄹ㉦㐴㔲㜶㍡ㄲ㥥㙣㥡㜳㉦捡㠴愷ㄸ㑤㌸㤹㙡㌴晡搴っ㘸挲挹㔸㉦㈷て挲愵ㅦ㠲〸㠵㘷〲㠰㠵㘰㑥昶㌵捥挹㐴㑣愱㜸㤲㐵搷㤱㤳搹㜰ち㈷㑦挳㔴收㘴㉥慣挲㐹搴换〹愷㜳搹㜶昶っ攴㠴户挷㠹搰捦㐳㠲㤳晤摤搰搶ぢ搰ㅤ㑥㜲戱㙣㈴㤹戴愳㌱扢㤰㑦挴搲攰㈴㥦㡢愶敤㠴㥤㡤㐷散㘲㌶ㅡ㍥挰㌴攷㐵㤴〹捦㌳㥡捣摣昳㡤㐶㥦㍡〸㥡㜰戲㥢㤷㤳㔷攰搲慦㐲㠴挲〷〳㠰㠵攰昹攴㄰攳摣㤷〸㍥㐳㐱扦挹愲敢戰愴づ㠳㔳㌸㜹ㅢ愶㌲㈷㐷挰㉡㥣㙣攷攱挴㝡〷㤰摡ㄳ敦搰㐰愲㜸ㅢ㕣㕡昶ㅥ㈴㠸㕡攸搶㘷扤て摤㈵慡㤸㡥搹㠹㌸㔸㐹㘷ㄲ㘹㑣挳戱㠲㥤㡤㘴搳搹㜴㌴㤶捦挵㤲攱㐵愶㡤㝦㐲㤹㜰捥㘸ㅦ㔰㤳㥢攳㕣㈵晡㤴つ㥦㄰㌵挴㈵㑡㈶摥て攱搲ㅦ㐱㠴挲㈵〰戰㄰㍣㜸ㄶㅢ攷〱㐴捣愳昸ㅢ㡢慥挳㤲㙡㠱㔳㠸晡ㅣ愶㌲㔱㑢㘱ㄵ愲戴㠷愸㥥㠹户㝦㈰㈷慤愶㥥㉦ㄱち㥣戴戹愱慤慦愰㍢㥣挴愲戱㘸㥡昳㐹㍥㥦㑡㤴㘲戹㕣㌲㤱捦攴搳改㐸㈴㤵挴敥㍦ㄱ㙥㌷捤㔹㡦㌲攱づ愳挹〶㈵㌷挱搹㝡晡㔴ㄷ㝣挲㠹㜲㌹㠱㡥㍣换㐶〸〵ㄱち㜷挳〰㘰㌰㈷换㡤昳㄰㈲昸昸〵摤挴愲敢戰愴㔶挲㈹㥣㠴㘰㉡㜳戲ㅡ㔶攱攴敦㕦㝡昶摡〳〱愹㍤㜸晥ち㘸昵㕥晢㍢愶昲㑤㔰ㄸ㐴㝤搷搵慤㘶攸づ㔱愵㐸㈶ㅢ㉢㐵㌳㜶㉥ㄵ㑦㈴㤲搹㑣㍡ㅡ捦ㄵ㌳㠹㐴㈱㤵㡦攱㘸挹ち㤷愱挹㔴㉡ㅤ捦愷㜳改㐸挹挶㑢〰戲戹㘸㉥ㅡ挹ㄵ攳挵㔴ㄶ㐵㡢㔹㙢搳㌲㌴ㄳ㡦愴搲戱㜸っ㌳㔹㌱㤱捤㈶ㄱㅣ㠶㝣㉡㥥捥攴㈳㤹㐸搶摡慣っ㑤㘱慣㘶㈲戹㔸㍡ㄹ㉢㈵ち挹㕣㉥㤵㑡愶㜳㤹〲㡥搵㜳ㄱㅣ愶㠵㡦㌶㉢戱㌹捡攸挱ㄴ㐳㈸戶㠰〸㝦捦㌸户愴㘹㉢㡡慤㈹戶愱㤳昷攲愵㘳愴㈴昱㑥㐹挶㔰摦㠷㔳扡昵㉤㔰挷愳㌹改㠸㘱〴つ㠷〸㠵㜹攷㥤愵慤ㄱ㔰〳㡥搳㜶㠴㌹攰㌸捤摡〹昶捡〳扤㤱戰昸づ〷挳㈷㤸戶敤っ愷㡣〶㥤攳攰㔸挴㜱㜱ㄲ㥣搲㥣摤攱㉣㡦㡢ㅦ挰㉡攳攲㈵捦戸攸搹㔶㕥〸ㅣ〲扣㘱㉦ㅣ㡣㐱㈸っ㠱㌵㙥㘸㙢㑦攸捥㄰㐸摡昱㔲㉡㠱捤㈲㕦㑣㈵ち戱ㄴ㍡て㘷㐹搱㘸㌲㙦愳㙦㈳昱昰㡦㑣㜳㈲㈸ㄳ㍥挵㘸戲慤慣㌵ㅡ㝤敡挷搰㠴搴愷㕣㔲愱攳㈲つ㕣㍡〹ㄱち昳ㄶ㝤捤㙤攵㈷挶戹㤸愵昸㤰ち扤㌷㡢慥㈳㈷㍦㠵㔳㌸搹㠷ㄵ搱挲扦戳㘰ㄵ㑥敥ぢ攴攴㥥㐰㑥捥㌶昵㑣㐴㈸㜰㜲㡥ㅢ摡㥡〴摤攱㈴㔱㠸㤴㌰扥㔳搱㜴㈴㤳㠸ㄶ㑢㤹㘴ㄶ㡦ㄱ㡤挶㘲㤱㝣㉡㥢捣㘴挲攷㥡收㑣㐶㤹昰㜹㐶ㄳ㑥捥㌷ㅡ㝤敡㐲㘸挲挹㙤㕥㑥愶挳愵㘷㐰㠴挲扣ㄵ㉦㥣昰㐸捤㜷昴ㄶ扥挸㌸搷㤱づ晥㤶㐳ㅥ戰慤昷㘷攸㡢攱ㄴ㑥づ愰㘶㌸戹ㄴ㔶攱攴ㅡ㉦㈷攵ㅤ昲慦〳㌹戹捣搴戳〰愱挰挹攵㙥㘸敢㈰攸敥㥣㥡㉢攵ち㌹㥣㐸挷昳㜱㙣晦㘰㈴ㄷ㠹㐷愳㤹㘴㌱㤵㡢㐴愳昱戰摣㥢㘷ぢて㐶㤹昰㉦㑤攳㘴㠷㉣户攵㡤㑦晤ㅡ㍥攱攴㜲㉦㈷㠷愳㤸㍥〲㈲ㄴ扥摡㌴㈷攸〰晦ㅡ攳㕣捥㠰㉢㈸㡡㉣扡づ㑢敡㍡㌸㠵㤳ㄲ㑣㘵㑥㙥㠰㔵㌸㌹捦挳㠹戵〴㤰摡㜳敡㌹㠱㐴摤㘸㉡㍦ㄲ㠵㐱搴㙦愰攳㘴戶捥㕡ち摤㈱ち㈳㈶ㄶ㡢㈶散ㄸ㡥昸ㄳ㐵㑣㘹挵㌴㡥㕤戰㕦戶㤳㤸㘱㔳㈹慢戵っ㉤㐵ち㔹㥣ぢ㈴㘲㐵㠰㌳㈹㍢ㄷ捦ㄴ㑢㤱㐴㉡㤷㑥㈶㜳㤱㕣㌶㝣㤳ㅢ㕥户愱㡣收㝢㘶挲㌷ㅢ㔳〷㑤换㘸晡慤㌱ㄱ㈰㔰㜵ㅢ㑣㐲昱愹㕥㡡扢改㕦づㄱち摦づ㐰捤㑤昱づ攳攴〳㌷攴愹攷晡㘸ㄶ㕤㐷㡡敦㠲㔳㈸㍥〶愶㌲挵昷挰㉡ㄴ㝦摦㑢昱㜱㠰搴愶昸搸㐰㡡敦㌵㤵ㅦ㡦挲愰昸㍥㔷户㑥㠰敥㔲㕣捣㤵ち搸㑢愵㔲昹㈴戶捦㕣㍥㥤㉡㐵㤲㤱ㄲ愸㡣㘴ㄳ昹戸㜵㘲ㄹㅡ㉦搸㜱攰ㄲ㜶㈹㥢挶㉣ㄷ换挷㡢愵㔴㉡㠳㜳戰㜸㉥㕢㉣攴慣㤳捡搰㐲㍣㕦㠸愶戰敢㐹㘳て㤷㈸愵戳㌸㔹换㐶愳昹㙣㈴㤵㠹ㄶちㄹ敢攴㌲戴㤴挱攱㔵㈱㤳挹挷攲搸昹挵㌳㔹㥣攲愵搰㤷㠵㑣愴㤸㉣ㄵ散㌰㔳〵㠴摥ㅦ愰㡣晥㈱挵ㅡ㡡ㅦ㐱㠴ㅦ㌰捥㔳㘸㕡㑢㜱㉡挵㘹㜴㍥㘸㥣㔲㠸㜸愷㈴〳愹㐷攰㤴㙥㙤㜳扢㔵㍡攲㑣㠲捥㠲〸㠵㤹㌱挰㝡慤戳愱〶散戶捥㠱㌹㘸户㜵㉥散㤵扢慤昳㘰昱敦戶ㅥ㌳㙤㍢ㅦ㑥㘷户㜵㈲㐷挸〹ㅣㄷ㑦挰㈹捤昹㌹㥣攵㜱昱ㄴ慣㌲㉥㜲摥㜱昱ぢ㐰㙡㡦㡢㠵㠱攳攲㘹㔳昹㈵㈸㡣㜱昱㡣㕢㥦㜵㈹㜴㘷㕣攴搳㜶㍡㥥㑢ㄷ㈳昱㘲㉥㔱挸摢㤹㐲戴㔴挸愶昰㉦ㅦ㑦ㄷ㘲昹戰㈴㈱戰挵㤷愱㑣昸㌹搳攲换愹㍤㙦㌴晡搴㑢搰㠴改㐳㕣愶户㘴戱㉢攱搲㔷㐱㠴挲扦〳㐰㝡㤸㑣㙢昲慡㐹愲㈶㙦攱㤷㡤昳㕡㥡搶戱攸㈹ㄴ㍦㠲㔰慦挲㈹㐴摤〸㘷㤹愸摦挳㉡㐴捤昶㄰搵戳㝦摦㌷㤰㤳搷㑤㍤扦㐵㈸㜰昲〷㌷戴㜵ぢ㜴㠷㤳㕣㈹㥦㐸㐶㤲㠵㔴㈲㘷攳㠸㌸㤱㉤挵㑡㜶摡㉥搸搸愱㘵㡢搱㐲㔸昲っ搸戸㕢㔱㈶晣㠶㘹㥣散换摥㌴ㅡ㝤㙡ㅤ㌴攱㘴㡡换〹㜴晣㑡ㅣ㉥㝤ㄷ㐴㈸晣づっ挲㐹搰扥散㕤攳㕣挷㔲㝣㙥㠹扣〰㐰㍦挴搰敦挳㈹㥣㍣㑣つ㍥昹晢〰㔶攱㈴ㅢ挸㐹㍡㤰㤳㍦㥢㝡ㅥ㐷㈸㜰昲㝦㙥㘸敢〹攸敥㌸挹挷㜰㈲㠹挳㥣㐴㈴㡤ㄳ敥㜴㌶㔲捣㘷愲昱㐴㌴㤳捦㤶㑡㤹㝣昸㐳搳㥣㈷㔱㈶晣㤱搱㠴㤳㡦㡤㐶㥦晡っ㥡㜰ㄲ昵㜲昲㉣㕣晡㌹㠸㔰昸㉦〰〸㈷㐱ㄷ㘶晥㙡㥣捣挱㤰㔷ㄳ攸㔷㔸㜴ㅤㄹ昸㍢㥣挲挹㙢慣挸㜰昲て㔸㠵㤳㤱㕥㑥〶〲㈲㈷摣㍢〶㜲昲㠵愹攷㡦挰㠱㤳㝦扡扡昵〶㜴㠷㤳㔴ㄶ㐷昶改〸摥ち㔴㡡㈶㜲㤹㔴㈶㔳㈸㐶㡡㤱ㅣ收捡㔸㈱㥦㡥㔸㙦㤶愱搹㘲㍡㤹㐹㤵㡡㠵㐲㈲㤶㈸ㄵ敤㕣扡㤴㑡㐷㡡㌸㠴挴㔹㝢㌴㥢戰摥㉡㐳㜳昹㘸㍣ㅤ挹挷㌰㕦攲戲㈰㕥ㅤ㠶戳㠵㘸搴捥收㜳㠵㈴慥挸㘶慤户换搰㜸ㄲ扢捤㔲㈲ㅤ㡦㤵ㄸ㌷㤲㑢收㡢愸ㅢ挷愶昱ㄸ㉥㥤挵挲㕦㥡㤵㔸㠷㌲晡ㅤ㡡㜷㈹摥㠳〸㝦㘵㥣㕢搲戴ㄵ㐵捦愹挰㝡攳㈴㔴㑢㜱㈹挹ㄸ敡ㅢ㌸愵〷㌷㜵㝢㔰㌸晦㤴挸捦㈰㐲㘱㜶㥦昴攰〸摡㜶愴搸㠹㘲㈴㐴㤸㜹つ攲晣㥣愶㜵攸〴晤ぢ㡡㡢㈰㔴㍦㜸㈴摡㤷㜰㤶㝢戰ㄱ㔶改挱㐶㙦て㜲㔷㈹㍤搸㉦戰〷㉤㔳捦搷挰愱〷㤹愱㠰㙦㥤昵つ㜴愷〷㤳改㔴ㄶ搴㤵㔲摣搵ㄵ㘳愵㙣慥㤸挲扣㤷㉥攴㌰晦㈵ㄲ㌹慢づ攷昳づ戴ㄴ挵〳昲敤㘴愶㄰挹㘳㔲㈸愴㜳㔹摣㈸㐹攴昳戱㝣㈹ㅡ㡦㘴㌲昸挱愶㠱ㄶぢ改㑣㍡㥥㐱攷㘶㑡㠹㔴戴㤴㡢摢㤹㐸㍡㤷㡣ㄴ搳戸戶㥢㉤㔹昵㘵㘸㌶ㄵ户㑢㌸㥡挹ㄷ愳ㄹ㥣捣攵昳㜸㔷㕣㌴ㅦ捦㘷㤳㘹㍢㤷捣㐵挳㑤㘶㈵晡愱㡣㙥愰㘸愴戰㈰挲摡㌸㠳昶㡡㑣戵攰敡㝡ち㐹っ㤶㔴捣慡㤰ㅥ晣散㥦㥥㤳戹㌰㈳㙦ちㄱち㌳戱㐲㑡〷捤搵㑣戸㄰攷ㄶ㉣㈰㍤挸㠷挰攸㉢㈰搴愶昰㐸て㙥〳㘷戹〷㤹㐸㈱㍤昸㉥㉡㌴㔷搶昵㜱㡣挲ぢ挶敢㘰慤㍥ㅤㅦっ㌷ㄱ㝡㝢㠴㐲て㌲㜵㠲ㄱ慤ㅤ愰㍢摤㔲㡣㤷昲戸づ㡡㌳昱㘲㍣ㄱ换ㄶ昳㤱㔲慣ㄸ㡤搸㠵㈸㉥㤲愶㑢挹昰ㄶ㙥ㄹ㍤っ㘵挲㕢ㅡ敤㈴㉣㠴户㌲ㅡ㝤㡡搹ㄳ挲挹ㅦ㕣㑥㘰挴戸㠵搴㈳㈱㐲攱㙤〱挰㌷昸愲搷㜶挶挹挷捡挸换㍡昴㘸ㄶ㈵㍢㑡ㄲ㈶㘸ㅦ〳㔳㤹ㄳ㈶㑣〸㈷捦㜹㌹㌹㤸㔵㤰㤳㘷〲㌹ㄹ㘱敡㠹㈱ㄴ㌸搹ㄱ扡㜰ㄲ㠷敥㜰㤲㈹㘴㜳㠵㘲〶㍢㉢㕣摦挲〵㠸㙣戶ㄴ㐹攳㜹晦搹㈸㘶ㄴ扢㔴ち敦攴㤶搱〹㤴〹㡦㌴㥡捣搵㍢ㅢ㡤㍥戵ㅢ㌴攱攴㌱㤷ㄳ㙣昹昸攵ㄶ㕣㍡ぢㄱち㌳㔱〲㕦晦㘹㤸㜳ㄱ㥤〹ㄴ攲扣㠹㠸㥢㈹挶戳愸㜰㈲㠹ㄱ㌴㑤㘴㐵㔸㤰㍦㈶㐶〸㈷㜷㜹㌹㈹㙦改㜷〴㜲ㄲ㌱昵㑣㐵㈸㜰ㄲ㜵㜵㙢ㅡ㜴㠷㤳㜸㈱ㄷ挵㠵ㄲ㕣摤换㐵ㄲ戸㔰㥣㠹㘵㔳㍣つ戳㜹㜴㥢挶昱敦昴㌲搴㑥攰㤸愸㤸㑡愷㡡㤸㐹㌱愹㘷㔳愵㘴㍣㤱㉢㘴搳昱㐲ㅡ㥢扢㌵愳っ捤㈷敤㔸慡ㄴ㑢ㄴ㌳戸㜴㤳㡤ㄵ㌳㜸㥦〳捥㕥㜲㤸戶戹㔷㈸㔹㌳㝢愰愹㜴㈲㥢㑦〲㤸挱㔹㑥㌱㥥戱㜱㤱㉤㡢攳敢〲づ㠹敤㐴㉡捣搴つ㝣昱㥢㉣㤴搱戳㈸㘶㔳捣㠱〸㌳㜷㐳㥣㐱㕢㝡挲㌸〹昵㤴㘴㈰㤵㠶㔳㝡昰㉡户〷㐹戳㍥㤸挸㐳㈰㐲攱㡣㈹ㅤ戴愵㌳戳〳㕦晣扡㠸〵㘴㑢攷戳㙥㌴㥦㥣愳㈴㘳㠳㕡㥥ㄵ搱挲扦戱挰㑢て㕥攸敤挱昲摥昶㘷㠱㍤挸扣つ愹愷㠴㔰攸㐱收㘸㔰户ㄶ㐳㜷㝡㌰㡤㝢㘳戹〸㘶搰ㅣ㑦㑢㜰搵戶㘸愷㌱㝤攲㡡㘵慥㠰㙤㍥㘲㉤㈹㐳㈳㠵㐸㌴㠲敥挶㔹㐸㍡㤱㑥摡㤹㔸慡㄰㑦㤷攲㌶㝡㈹㡥挳㍡慢愵っ㐵㍦ㄷ㡡攸㤹㈲捥换ㄳ戱㘸㍣㠳㉥㐷晦㘷㤲搸慦攳㈶㕣挱㍡戲っ攵㥥戸㘴摢㈹㕥㌰㑥攴㑢戸㔱㡡㡢ㅥ愹㈲㌶愹㜸㌲㥦㐹收挳攳捤㑡㉣㐵ㄹ摤㑡搱㐶搱づㄱ㘶㔲〹搷㐸〷敤㙤㈷ㅡ㈷愱㑥愱㜲っ㌵〵㑥改挱㌵摥ㅥ㕣㐵攴㙡㠸㔰㜸慡㈹ㅤ戴户㘵捡〹扥戸搱挹〲搲㠳て㔰扤ㅦ㐲捤㠰㐷挶挳昱㜰㤶㝢㤰愹㈴搲㠳摦昳昶㘰㜹㕥晡㙥㘰て捥㌲昵㥣㡣㔰攸㐱㈶㡦㌰愲昵〳攸敥㌶㠸㙣㠲㌴て㔴㌲昹㝣㈲ㄵ挳㙣㥤挶㔹㍢㍡㌳㠲扢ㄶ戸ㅡㅦ㤶㕣ㄳ㌶敥㠷㈸ㄳ㘶㜶㠹㌴㑥收愵晤㡣㐶㥦㘲晥㠸㜰戲摣攵愴ㅦ㡢慤㠵㑢㥦ちㄱち捦〷〰摦攰㜹㠹愹㈵攲攴愳㝦攴㠵㍢晡㑣ㄶ㈵㍢攱〵挶㜹㌶㑣㠳晡㌵㌲㔹㘲㉦㕦㍥㐲昰㠳㍦㐶昹㕦搶㌲〵㉦㕦㘱ㄲ㘵㕤㍦㍣昱挰㜹㑥㐰㐳晤户晥扤㔸捣㜸攰㘳㐲昸搷搸㠲戵晥て攲㤰搵㥥ㅣ〸㐶攴て愸昴戹㔸攱挶挳戱扡㤱愰㈶㙥攸ㄵ愷㈸㔸㌷愴㙤㐶ㄷㄲ㈲昰慡摣昹ㅤㄳ捡敦㔹摤搴㈴㑡㡣㌲敦㄰ㄹ搹㘳㤹㤰敦挲㈳㘶扡㙤㔳㙣㙥㘷戹ㅣ摥挹㠱摣ㄶ㌸㐶昱㡤㈳㐳㝡㌴捦㜳ㄶ㠶昶㔸㘷戴㜷攱敤㌸㜶搱㐴散挲㐳〷ㅡ敡晢愹挰㐷㥦戸㙦㔴攵㠳ㄵㄸつ敦挷㤹㔱㈴〱㐳〳㥥㌲㌱戱愵㕢㥥搲戲㉤晣㑡㌳㔱挶㍡ㅦ㙢㙢㡤摤㘹捡㑥搱㜴愳㡤㡥搸攸㍡㉡㘹㘷㡤ㅣㅢ㈱㝤〱〲㉡づ㜲㐶愳愹㜹ㄱㄴㅥ摣㤲㔷捦攷搳㜱慥㌲摥昹扦挹晤㍦㍣扥㤹愹㉢㔲攲〸㌵晣㡣〹㡤㙦ㅥ敢㈲昱捣㡢㕢户㍦改晦敥ㅢㄷ㝡昹搲㘵㘳㐳户㡣愳戶晦慤搷㡥㔳㑢㔰㘲㈴㔰晡㉤㡡户㈹㌸晥搵㈲㌴攲㌵晣攲慥敡扤ㄳぢ㕤㠷晦扤ㄳ㘱㈶慢攰㡢㘷挴愱扤㠳晡㈹㈶㤷㜰慢㔱㐷愰〴㠷㉡㔷㔵㕦挶戵㕣〶㌳㐷㤸搲捣㌸戱慥㠰捤愵㔲ㅤ〲愰㈱〰㡦〰㈴㥡ㄷ㐲㡤愹戹ㅢ㑡摦㌸㘱㤲㐹摦㌸㌹ㅡ㈵㠲㌸㤹敦慥㝡ㄵ㈷昳㕣㠷晦㔵ㄴ㘱愶㤵攰㡢㈳㐱㠷㤳攳愱〸㈷晢愳㐴㤹㤳敢戹㤶㈷挲攵㜰挲摣㄰敢挶㌲㈷㈹㌵扢㠲㤳㥢㠸收㠱㙢㤹㤳ㅦ戲〰㙡攱㥦攷㔳㝢㥣㌸愰挱攳㥢搷㤸㤲㘶扣慣扦敡戳攷㘷攷㡦扢攷敡㙤て㉤敥昵挶㍦挶㠵て捥摥昴攸㡡愷挷㍤昰昷㕤て晦昱晤て㤵㐷㥥㍡ㅤ㈵㠳㌸㥡㕥㡢愳㘹慥挳晦愶㡡㌰㌳㑡昰慤搳户愳晤ㄸ㌷㘷㐳ㄱ㡥愶㜸㌹扡㤳㙢㝤㉥㕣づ㐷捣ㄵ戱敥㠶捤㡣㥢〹ㄵㅣ摤ぢ㑦昳〵挰昴㙤愸㕣㘸㑡ㄸ㍡っ㥢㌵㌷㥦换㔰㈲㠸㠶扤㙢搱戰㤷敢昰扦慦㈲㝣〵㈲攱㡢㘷㙦㍢㌴㌰ㄳ㐴㘸挸㝡㘹㜸㤴㌴㕣つ㤷㐳〳搳㐳慣挷㍤㌴㈴㉢㘸㜸㤲㌴㕣て㑣摦㘸戸挱㤴搸㘸ㅡ㙥㐵㠹㈰ㅡ㈲戵㘸搸搳㜵昸摦㕡ㄱ扥ㅤ㤱昰㐵㠶㠳㐳〳㤳㍦㠴㠶㍤扣㌴扣㐸ㅡ敥㠵换愱㠱ㄹ㈱搶敦㍣㌴散㔶㐱挳㉢愴攱㐱㘰晡㐶挳㐳愶挴㐶搳昰㈴㑡〴搱戰㔳㉤ㅡ㜶㜴ㅤ晥㜷㔷㠴㤹㉡㠲㉦㝥捣攴搰挰㝣て愱㘱戸㤷㠶㌷㐹挳㡢㜰㌹㌴㌰〹挴㝡摢㐳挳㜶ㄵ㌴扣㐳ㅡ㕥〱愶㙦㌴㌰搵㐳㑡㙣㌴つ㙦愲㐴㄰つ㕢搵愲㘱㑢搷攱㝦㠳㐵昸㙤㐴挲ㄷ慦㈸㜲㘸㜸て㡡搰㌰挴㑢挳㠷愴㠱㠹ㄸづつ㑣昱戰㍥㉥搳㤰㔲㥢㔶搰昰㈹搱ㅦ〰㔳㥥㍦㍦㘴〱搴挲㍦捦㘷㈳收㑦㘶㜷㐸㐹挳捤㐶捦㥦㝦㐳挹㈰㡥〶搶攲㘸㠰敢昰扦攴㈲晣㌹㈲攱㕢愷㍦㐷㑢㌰㝦㝥〹㐵㌸搲㕥㡥扥㠰㔳慤㠷换攱㠸㈹ㅦ搶㤷戰㤹昹戳戱㠲愳昵昰㌴戳搷愵攳㍤㥣㘰戱㌶㉤捤捡㤴㌰㜴㤸㤲㌵攷捦㈶㤴ㄸ挹挶晢づ㍦敡㙡搱昰捤ㄷ捥㜱㠹晦㔵ㄷ攱㄰㈲〹つ昵㜸戲ㄵ㘸搸〴扡搰昰㉦㤴㈸敦㙡ㅢ攰㔴捣㙢㜰㘸㘰㐲㠷㘵挱〶ㅡ愶敤ㄴ㡤愸㝦〲捣㜱挱㐸㈱摤㐴㌴搳ㅥㅣ㜴㤸㘸㍥㌸ぢ攸愹㐴晦摤㐵㜳㌵㐳㝡㈰搱捣戱㜰搰㑣敢戰㌶昱挴晥捣㐵昳〰㄰㡦㜹㈷㝡㡢㌲㥡㤹ㅤ搶㘶㥥搸ㅦ戹㘸攷攰㜰㌰搱㍣㘷㌴㡤㔳扣㔲㙢㐶戰攲ㄵ㕢㉡っ慤㤸挴㐱㠵慤㙡ㅥ〶〵摦㡤ㅦ摢捤挳㑤〹㙦㈷ㅥ㌷㜷戳〹㡣户㘸摤㔴昹摦慢慢㥤㔱㘲㈴㥣晥㑥晣ㄳ㔶㈱昰ㄸ昲㝤搷攱㝦㔵㐷㜸㜷㐴㤲㑥摣〶敢㡢㑥ㅣ〳㕤㍡昱㕤㤴㈸㜷攲戶㈴㈳〲㤷㐳㌴㔳㌲慣敤ㅤ敡㜸㌸慥摥慡愰㙥ㄸ㍣捤捣愵挰户て㌴㌰昱㐲㑡㜸㘹㈰〵㌵挷㌲㤳㉥㐶〶搰昰㝡㉤ㅡ㝥敦㍡晣㉦散〸敦㠳㐸㐲挳捥づつㄳ愱ぢつ慦㝡㘹搸㤵㌴㑣㠶换愱㘱ㄲ㤶慣摤㍤㌴扣㔴㐱挳㘸搲㌰ㅤㄸ㝣晢㐰〳㜳㉤愴挴㐶搳挰ㄴ㡢㤱〱㌴㍣㕢㡢㠶㘷㕣㠷晦戵ㅤ㘱愶㘷〸つ㌱㠷㠶〵搰㠵㠶愷扣㌴㈴㐸挳挱㜰㌹㌴ㅣ㠴㈵㉢攵愱攱戱ちㅡ㌲愴㠱ㄹㄳ昸昶㠱〶愶㔷㐸㠹㡤愶愱〸昸挸〰ㅡㅥ慣㐵挳〳慥挳晦昲㡥㜰〹㤱㠴㠶㝤ㅣㅡ㡥㠴㉥㌴摣攷愵㘱㍣㘹㘰戶㠳㐳挳㔲㉣㔹ㄳㅤㅡ㌰戳㈵搵㕤㉥つ扣㐴ㄲ搲㤳㠹㙥㉦愳㕢㠹㥥敡愰戱〹㈵搵㙤㉥摡㤹㝤愶ㄳ捤戴㠹昲㠴戳捣㔵ㄸ慤㤹搹ㄱ昸昶㠱㑥愶㔲㐸〹㍦㥤ㄷ㝤昶慢扤㐶㕥㜸摤戱㜱昹扣㌰敥晣昳昸㜹㙣㥣㘲ㅡ挵挸〰㍡㙦㜲㔹慢㍡㈷晢㡤敢昰扦晥㈳㝣っ㈲〹㥤㜳戰㔶㤸㘳㡥㠷㉥㜴摥㠰ㄲ攵㌹㘶㍦慥㌲㔳〷ㅣ㍡㑦挰㤲㜵㠰㐳㤰㑣晤搷戸〴愱㐹愰㜳㍥搱捣㍢㜰搰㈷ㄲ扤挰㐱换㙥攵㉡ㄷ捤㝡㐳晡㘰愲㤹搵攰愰㑦㈲晡㔰て晡㜲ㄷ敤散㈸づ㈷晡㐷㘵昴挹㐴㝦摢㐱㑢㑢㉥㜶搱㑥㔷㉤㈲㥡㤷㠷搹㔵慣㑥慤㜵ㄵ晡ㄵ搳㈵捡㍢㡡搳㕣〵㡥扡㘶收㐲攰摢㠷㑥㘴攲㠴㤴昰㜶愲㜷挷挰戸㕥㕤㌱晢㘱㈴㡣晥ㅤ挵〵㔸㠵挰ㅤ挵捦㕣㠷晦昵㈵攱㥦㈳㤲㜴㘲〹敢㡢㑥扣〴扡㜴攲㜹㈸㔱敥挴㈵㈴攳㌲戸ㅣ愲㉦挵㤲㜵愴㐳摤戴㥤㘲㌱㜵㔶〵㜵慤㐴㕦づ㡣ㄹ攵捤捣㕡㘰㉤㌸ㅡ昲㝥慡㡦㠰㥡㤹摡㈰㐸挳㠵㍢㤰扦㌱〳摡㈹晦改㌸㜵㉤㤰㈳愱昹㌹㌸扤ㄶ〷㍦㜶ㅤ晥㌷㤸㠴㤹〵㈱ㅣ㜴㍡ㅣ晣ㄶ扡㜰㜰慡㤷㠳㙥慥搵慤㜰㌹ㅣ摣㠲㈵㙢㠵挳㠱散㉣搷㔴㜰戰ち㥥㘶㈶㈶攰摢晢㙡㍢㉢㠵敢㑥捣㘲㤰ㄲ㘶昵ㅤ捦〶㜶㤶て〱㍥㌲㠰㠶ㄳ㙢搱㜰㠲敢昰扦挷㈴晣㌰㈲〹つ挷㌸㌴㍣づ㕤㘸昸扥㤷㠶攳㐸挳㤳㜰㌹㌴㍣㠱㈵敢㜸てつ摦慢愰攱㐴搲昰㉣㌰昸昶㠱〶㈶㉥㐸㠹㡤愶攱ㄵ挰㐷〶搰戰慡ㄶつ㉢㕤㠷晦㙤㈶㘱收㍡〸つ㍦㜲㘸昸㈳㜴愱㘱戹㤷㠶戵愴㘱ㅤ㕣づつ捣㘲戰㑥㜳㘸㤰挹攴愸ちㅡ㑥㈷晡㥤㌲晡㑤愲捦昰愰摢㕣㌴㝢㍢愴捦㈴晡摤㌲晡㉤愲捦㜶搰㌲〹戶戸㘸㘷㕡㍢㤷攸昷捡攸户㠹㍥摦㠳戶㕤㌴搷〹ㄷ㐷攱㘹晥ㄴㄸ㝣晢搰㈱捣㐳㤰ㄲ摥づ昱㑥㐹㙣戹㔷㔷㥦〳㍥ㄲ㐶晦收戹〸捤〹㥣愲ㄶ扡づ晦㥢㔵挲㑣㕤㤰づ戹〴㙤挷ㄴ昵㌵㜴改㤰㈳㔰愲㍣㐵㕤㐶ㅡ㜸㐷摥改㄰㈶㈵㔸㔷㜸㘸㌸挴愵挱㈱敤㑡愲㜹晢摦㐱㤳〹敢㔷ㅥ昴㠱㉥摡㈱敤㙡愲㤹㈷攰愰㤹㥡㘰㕤敢愰愵戳昷㜷搱捥㥥攳㝡愲慤㌲扡㥥攸ㅢ㍤攸搹㉥㥡㤴㠵昴㑤昰㌴㌳㔳〰つ敥㐳㠷㌰慤㐰㑡㙣㜴㠷㌰戹㘰㘴㐰㠷㑣㐷㜳〲㍢㘴㥡敢昰扦改㈵捣㑣〴改㤰摢搱㜶㜴挸昶搰愵㐳愶愰㐴戹㐳敥㈴つ挳攰㜲㐸㘳㡥㠱㜵户㐳〳收换㤴㥡攰搲攰㤰㜶㉦㘹㘰㜲〰扥ㅢ㑦〳戰昸攰晡㉢㌳ち愴愴愱㘳愳慦ㅦ㡣㐶戱㈰㕡昶慥㐵换㕥慥挳晦晥㤷昰ㄸ㐴ㄲ㕡ㅥ㜶㘸㘱㐶㠱搰㤲昵搲昲㈸㘹㘱㌲㠰㐳ぢ搳っ慣挷换戴愴㔵戲㠲㤶㈷㐹㑢〶㤸扥㡤づ㈶ㄳ㔴㡤づ㔲㔵昳㥣㙢㍣㑡〴搱㄰愹㐵挳㥥慥挳晦ㄶ㤸昰㐴㐴ㄲㅡ㥥㜷㘸㤸ち㕤㘸搸挳㑢挳㡢愴㠱㜷搴ㅤㅡ㤸㔹㘰晤捥愱㐱㌶愹摤㕣ㅡ搸攸㤰㝥㠵攸㔹㘵昴㜴愲㕦昳愰㐷扡㘸㘷㉣扤㑥㌴㙦昶㍢戱㤹㕦㘰晤搱㐱换晣㌹摣㐵㍢㔳挱㥢㐴捦㈹愳㤹㘲㘰扤敤㐱㙦攷愲㥤愹攰ㅤ㜸㥡て〶愶㙦ㅤ挲摣㠰慡づ昱捥㤷㕣㑦慦慥扥㡤ㄲ㐱ㅤ戲ㄵ㥡ㄳ戸戹㙥改㍡晣㙦愴〹攷ㄱ㐹㍡攴捦㘸㍢㌶搷ㄲ㜴改㤰㈱㈸㔱摥㕣㍦㈴つ扣㑢敥㤰挶㐴〱敢㘳てつ㥢扡㌴㌸愴㝤㑡㜴㙢ㄹ扤㠴攸扦㌸㘸改扥㐱㉥摡改扥扦ㄱ捤㝢昷㑥㙣愶ぢ㔸㥦㝢搰摡㐵㍢摤昷〵搱敤㘵㌴㌳〶慣㉦ㅤ戴㜴㕦愳㡢㜶㍡㘴㍤㍣捤慢㠰改㕢㠷昰㔶㝦摦㍡攴ㄸ㤴〸敡㤰㍡㌴㈷戰㐳扥昹㠷攳昰扦㈱㈷㝣㍣㈲㐹㠷搴㌷㐹㠷㥣っ㕤㍡攴㕦㈸㔱敥㤰〶㌸搵て攱㜲㐸攳㝤㝦换㠲捤㕣㘸晣㈷挰收〰ㅢ㔷搸攰㘹㕥ぢ㑣摦㘸攰摤晤㉡ㅡ搸㘹㌵㈷ち摥搹て愲攱㙦敥摡㔶㥤㍦晥搵㜵㔴扤㈷㠷〹〱扤扤㈷㠷捦㙦戰扢攴㕤㉥捤㘸㔵㘳㠹㍦晡ㅦ㔰㜲捣扣㠷㡦㘷㑥戴戴戶捡攳ㅡ〶攲戵ㄶ㥤㑢敤捥㔹㜸㝢ぢ㕥㘶㌱慦愵捤㝤㠶〰摥敡挲户〴㤸ㄷ㈷㘸搱㔸搸㉡捤敤挴㥢ㄴ晡㤷㘶㜴攱慤㍢挵愶戶晤㜲摤摤㜶㘷晢晦挲㍢㉦昰〰㡤〶㙥て㑣捣挰ㄳ昷敡〳㥦㕤挱㠷㔲〴摥㉦ㄷ挶挶昴昰㌱ぢ敦㘳㘱㘲㐲㍤摦㠶昱敦扤㠰挷摡〴㐳捣㍣㕥戲攸㜹扦㑢㠳晡っ㕤散愴ㅢㅥ㔷㈷㔷㑢㜹㉢㕥㠷㌹㔸㌷㠵攸㠷㠷㌶㐸敡〹㐴㐸㙦〶㡢㍣敦㐵㐴㕤攳戹ㄸ〶晥㤵攳搳㐴愶㜲敤ㅢ㔷戶ㄴ扢㤷㔸㑢散㤶挵㑢扡昱搴㤰〱㕣㘳昳㘹攰㥤晥つ㘵ㄹ昰愲㑡晦戶㠵戹捥捥摣敡愶戶㠵慤㜶晢攲敥㈵㑤ぢ㔷㈰愹〲敦愵挱挴搱搴搴愴〷愳㍤慣㡡ㄳ㥢扡〴ㄱ㌹㉥慤㈱戰〶慦散㥦〳㔷㜶㑢攰慤慤㈰㉡㔷㜶㙢㔸㍣㉢慢㜸搷㥥㉢㙣㍥敡㑡㈸㕣つ㍤ㄴ挸㜲㌳慥㠵㐵㥡戱㉤慣攵㈷㘰㔷㤲扥㉥戰ㅤ摢戳㐲戶愳㠷昰㘱㌴昱㤹㘹づ攱㡡㜷挹㉢摡挰ㅢ攱搲㠶ㄱ㐰㤶摢挰扢挸㙣㠳㘶扦㌷愸搷〳慢ㅢ挹搸散攳㥥敡㜶愱挹㔳摤㥤晥敡敥㌵搵敤〶㘴戹扡㠷㉢慢㝢㈹戰扡搱搵搵㡤昱㔵昷愸扦扡㈷㑤㜵ㄱ㙦㜵扣㉢敡㔹扢愷〳慢㡢㔷㔷㤷昴㔵挷ㅢ愸ㄵ㘴扥㘲慡㑢㝢慢攳摤㐷愹㡥攳慡㐱㍤ㄲ㔸摤户ㄸ扢戲敦昶昶㔵昷愶扦㍡摥㡢㤴扥摢挷㕢ㅤ敦昲挹昸ㄹ〷㙢㡤昱㜳㙦㘰ㅢ㈶戰挲捡づ㥤攴㙢挳㠷晥㌶昰㐶愰戴㘱㡡户つ㥦扢㙤㜰挷捦㙤㠱搵㑤慦慥㙥愶慦扡㉦晣搵慤㌷搵捤昲㔶㔷㡦捤㔹㔶㜹㌶慣攵〷戹㔶㙥㌲㌷〶戶㘱㉥ち㔸晢㐱㔴㙥扡晢挳攲ㅤ挷つ愸愰愲愷㥢㘰㤰搵㥥〷㘴㜹ㅣて㌴搶昹慥㤵㥢扡ちㅢ敢㠱㕥散㘰㘳㕤攰戵㙥〳慢㡣ㄵ㘷挳扢㌲戰搱㠷愰㠴慦㥦づ愳挹戳攱㙤㡢㌸ㄵつㅥ㘶慡㍢挲㕢摤捥㤵搵㕤ㅣ㔸摤愲敡敡昲扥敡㜶昵㔷㌷摡㔴㔷昴㔶ㄷ㌳搵㌹㕢挲昹㠱搵㉤㘶散捡㉤愱挵㔷㕤挲㕦㕤挶㔴户搴㕢摤㍥㙥㜵㔶㉢慣挱ㄳ晡㑦〳㥢搰捥晡㉡㌷㠴㘵扥㈶㡣昷㌷㘱戲㘹㐲愷户〹搳㡤戵换㙢㥤㘳ㅡ搶つ㙢㡤昱㝡㑡㘰换㔶愰㠰戵ㄲ愲㜲扣慥㠲挵摢晤晢昹㕢㌷摦戴攳㍢㐰㜲扣昲愳づ㌶搶敦扡㔶搹てㅥ㙥慣㐷㝢慤㡢㡣昵㝢㕥㉢慦ㅣ换㤶㜷っ慣收㈱挰摥つ慦㕥㝤㍦㜰㐵㡥〳㕥㜳㐵㝡㜶ㅥ挷搳攴ㄹ挳㑢㄰扢㘲っ户㥡㈶㥣〸㘴㜹愳敢㜴㥢攰捥㌵摦〹慣敥〷㡣㕤搹愳㙢㝣搵㜵晢慢㕢㘵慡㍢挵㕢ㅤ㉦㤰㝡戶搰慥挰敡㑥慢慥敥㜴㕦㜵挷昹慢㍢搱㔴㜷㠶户㍡㕥㠸㤴敡㌸戵㌵愸搶挰敡捥㘲㙣捥㘲㍤㘴㥥㐳㤳㠷捣戵晥敡㑥㌷搵㥤〷㘴㤹捣㌳㡤昵㝣搷㉡攳攴㕣㘳晤㤹ㄷ㝢㠱戱㕥攰戵昲㐲㥤㌴㤸㘳扢㐱攵〳ㅢ㝣ㄱ㝣扥摥扦㤸㈶㑦㠳㉦㐳㥣㡡摥扦搲㔴㜷愹户扡慢㡤昵㌲慦昵㝡㘳扤摣㙢扤挹㔸慦㜰慤戲㜲扣㤰㈵つ收昱㔶㠳㍡㌸戰挱㔷挱攷㥢㤴㝥㑤㤳愷挱㜷㈲㑥㐵㠳敦㌵搵㕤攳㔶㈷㕢ㄷ㉦㄰㜹挶捦晥㠱搵㕤捦搸㤵挳昵㐶㕦㜵㡦晡慢㝢搲㔴㜷㤳户㍡㕥㠸昱㜴挷捣挰敡㙥㘱散捡㡤昱㌶㕦㜵㉦晡慢㝢挵㔴㜷㠷㕢㥤㤰昹扡戱摥改㙤挴㥢挶㝡㤷搷晡㡥戱摥敤戵昲㐲㠵㌴搸ㄹ昰攳〳ㅢ㝣ㅦ㑡昸〶晣〳㌴㜹扡攳㐳挴愹攸㡥㑦㑤㜵て㜹慢晢㥢戱㍥散㕡㘵㌵扥㌰搶㐷扣搸昵挶晡愸搷捡ㄳ㜹㑦㠷愶〲ㅢ晣〴㐰扥づ㝤㡡㈶㑦㠳㜹捥㕦搱㘰㥥搶换㌱挶㌳㔸㌰㕢㘸㘳ㄸ捡㐶㥦昶㜱挴㙤㡥ㄳ攴㔶扢挰户㜱㑥挴㍢ㅤ㐷戵攲昴㙤㈳㕥愱昹㉣敡㔱㍣㕦㘳っ晤㥣扢㐰愵㜹戰慢㌴挹㠰摥ㄲㅡㅢ愵㥦愷㤹㈷㍤㔲攲〵㜷㐱㑡っ㜵ㄵ愷〴捦㔳愴挴㡢㌴昳ㄴ㐵㑡扣攴㉥㐸〹㥥㡥㜰挱㈹挱㔳つ㈹昱㍢㥡㜹㤶㈱㈵㕥㜶ㄷ愴〴捦㈸㝡㑡昰㙣㐱㑡扣㐲㌳㑦ㄴ愴挴慢敥㠲㤴㠸戸㡡㔳〷て昸愵挴㙢㌴㈷㕤㥦晥扤扢㈰㈵搲慥攲㤴攰㌱扢㤴㜸㥤收扤㕤㥦晥㠳扢㈰㈵㜸㘸捥〵愷〴㡦戰愵挴ㅦ㘹收挱㌵㝤晡つ㜷㐱㑡昰㐰扡愷〴て㤲愵挴㥢㌴昳昸㔸㑡扣攵㉥㐸〹ㅥぢ昷㤴攰㈱慤㤴㜸㥢收晤㕤㥦㕥攷㉥㐸〹ㅥ戵㤶㑢㌴捦㌷ㅡ摡㔲搷㝣愰搱〴挹愳搳㌲㔲ㅤ〲㑤㘲扦㐳昳㘱慥㑦扦敢㉥㐸〹ㅥ㘰昶㤴攰挱愳㤴㜸㡦收扣敢搳敦扢ぢ㔲愲攸㉡づ㐷㡢愱㐹㠹㍦搱捣㐳㍦㠲昴〷敥㠲㤴攰㘱㕥㑦ㅤ㍣㕣㤳ㄲ㝦愶㜹㤹敢搳晦攷㉥㐸㠹㑥㔷㤱㍡㥡㜹㌴搶㔳㥥〷㔵㔲晥㐳㥡㜹㉣㐵㥦晥挸㕤㤰昲㍣㙥㤲ㄲ挲搱㜷㡤㈶扥愳㉢㌴ㅥㅦ〹㤲㐲昱㌸㐷㘲㝦㑣昳昱慥㑦㝦攲㉥㐸昹ㄳ㕤挵㔹晦ㅦ㐰㤳ㄲ㥦搲扣挶昵改捦摣〵㈹㜱㡡慢㌸㈵㜸戴㈱㈵晥㐲昳改慥㑦晦搵㕤㤰ㄲ㘷戸㡡㔳㠲〷っ㔲攲㙦㌴㥦攳晡昴摦摤〵㈹㜱㥥慢㌸㡣昱㜸㠰㘶晣㠷㌱昲㌳愳〹昲〲慦愶戸㙦㤷搸㥦搳捣摤㍡㐱晡ㅦ敥㠲㤴攰㉥㕣愲㠹㜶㔹㠵㜶㜹㠵挶㕤戵㈰㔹慦扡ち㥡挴晥㠲收㕦扢㍥晤㑦㜷㐱愲㜱㙦㕢㡥慤慥㠷㈶㈵扥愴昹㐶搷愷扦㜲ㄷ愴挴㑤慥攲㜰㜳ぢ㌴㈹戱㥥收摢㕣㥦晥㤷扢㈰㈵敥㜰ㄵ晣〷㌶敥㌴㥡昸敥慡搰戸㙦敢㘹つ昷㕢ㄲ晢㙢㥡戹换愲㑦㝦攳㉥㐸昹㠷㕣挵攱㥤扢㈵㈹㉦㌵㍤㘲㌴㐱㜲㌷㈴㍥ち昵〴㌴㠹㡤〷㠴搵㈹敥㕤㘸搶㡡ㅡ晤昸㙢收㥥㠴ぢ捥㥡㍥㙢㌰昵挰㤸㑦㤸㔳扤㕣愱敥〷㉢㙥ㄹ㍣㙦㔰つ㕥搴ぢ〶搵攸愰㘴㉡㐷っ㕤㠱㝡挹愰晡㍢㈸㤹扥㠹慡愸昱㘵㠳搲づ㑡愶散㉡搴慢〶㌵挰㐱扤〶㕤搶戰㈲搶敦つ㙡㤰㠳㝡摤愰㉡摡昵〷㠳㙡㜶㔰㌲ㅤ㔷搵挸㘹㔹㤸搸搴㐱挹ㄴ㕣㠵攲㔴㉣愸捤ㅤ㤴㑣扢㐴つ㠶㙥㍥㘱㑥扦㠲ㅡ攲愰㘴〲㈵慡愲昵㥣㐸〵戵愵㠳㤲㐹戳ち挵挹㔳㔰㕢㍢㈸㤹㈸㠹慡㔸㐷㑥㤸㠲ㅡ敡愰㘴㜲慣㡡挵㐹㔲㔰摢㌹㈸㤹〲㠹摡ㅥ扡昹㠴㌹ㄵち㙡〷〷㈵㤳㔹ㄵ㡡㤳㥡愰㠶㍢愸㑦愱㔷昷㄰㈷㌲㐱敤攸愰㘴搲㘲慣ち㈶㌸㜹〹㙡愴㠳㤲㠹㡡愸ち㔶㌹㘱〹㙡ㄷ〷㈵㔳㑥㔵扢㌸昵〸㙡㌷〷㈵㤳〷㔱ㄵ㝣㜱ㄲㄱ搴㈸〷㈵ㄳ㐶㔵扢㌸㜱〸㙡て〷㈵㤳㐴㔵㡤㥣㉣〴戵愷㠳㤲捤㥤愸㡡搶㜳戳ㄷ㔴搴㐱挹㠶㕢㔵㈳㌷㘰㐱挵〵ㄵ㌶㌴㈹㙥㥦㜲敢攸挹捦㥤㕢㐷ㄳ㔱ㄶ㕢㜶搸慣㤶攲戶㈹㠸㈷㉡ㄱ㡡㥢愳㌸ㅥ昷㌹戸〵㡡攳㌱㥦㠳ㅢ㥤㌸ㅥ昵㌹戸㥤㠹攳ㄱ㥦㠳㥢㤶㌸ㅥ昶㌹戸㌵㠹攳㈱㥦㠳ㅢ㤰㌸ㅥ慣㜴㠴つ㙢㡡ㅢ㡦㈰ㅥ愸㐴㈸㙥㉦攲戸摦攷攰㈶㈲㡥晢㝣づ㙥ㄵ攲戸搷攷攰㠶㈰㡥㝢㉡ㅤ㘱戳㐵㈸㙥〴㠲戸扢ㄲ愱㌸敥挵㜱㤷捦挱愱㉥㡥㍢㝤づ㡥㙥㜱摣攱㜳㜰㐰㡢攳㜶㥦㠳㘳㔸ㅣ户昹ㅣㅣ戶攲戸搵攷攰㐸ㄵ挷㉤㍥〷〷愷㌸㝥敢㜳㜰㍣㡡攳㘶㥦㠳㐳㔰ㅣ㌷㔵㍡〶晣㍦㙢昹挸晦
B55: Decisioneering:7.0.0.0
B56: CB_Block_7.0.0.0:1
B57: 㜸〱捤㝤〷㥣ㄵ搵昵晦摥㠵ㅤ㜶ㅥ㘵㥦〵ㄵ戱〰㠲㡤攲敢〵㐵㝡㤵㈶捤ㄲ㜵㝤㘵ㅥ慣㙣挱摤愵愹戱㤷搸㘲㄰扢㐶㔱㘳挱ㅥ戱ㅢ昵㘷㙦戱㐷搱㈴挶㐲搴挴㡥挶㙥攴晦晤㥥㤹晢㜶摥扣㜹㉣㈴晥㍦㥦㍣昶ㅤ收㥥昳㍤攷摥昹摥㍢㜷摡㜹㌳㔵慡慡慡㙡〳㍥晣㥦㥦慥㕣搸㘱昶昲戶㜶慢㘹搸搸㤶挶㐶㉢搷摥搰搲摣㌶㙣㜴㙢㙢㘶昹搴㠶戶昶㉥〰ㄸ昵つ戰户搵搴户㌵ㅣ㘵搵搶㉦戱㕡摢〰慡愹慡慡慤㌵慢㘱敦攳㝣㠳扡㘰搲换散㑡〱㔴㤵㘹㔰㜴愳愸愵㌰㈹〲ㄴ摤㈹㝡㔰昴愴攸㐵㔱㐷ㄱ愴搸㠲㘲㑢㡡慤㈸戶愶攸㑤戱つ挵戶ㄴ摢㔱戰㝥㜳㝢㡡扥㄰㍤㜶㠰㤸㌳㜶捣㡣散ㄱ㔸㥢搹敤㉤慤搶㤰㝥昳散㌶㡦〸㠷㠷㠵㠷㐵㘳搱挴戰搰㤰㝥㘳ㄷ㌷戶㉦㙥戵㐶㌴㕢㡢摢㕢㌳㡤㐳晡捤㕣㥣㙤㙣挸敤㘷㉤㥦搳戲搰㙡ㅥ㘱㘵㐳搱㙣㈶㤶ち挷攲昱㐲㍡㥤敡戱㈳㈲㑦ㅦ㍢㘶㘶慢㔵㘸晢戹㘲敥挴㤸㌳挶㡥ㄹ㌶摤㙡晦戹㘲敥㡣㤸〸㌹慥愵㈹搳搰晣㌳〵慤㘱㥦挶挷㔹戹〶㜶扥㘵戵㌶㌴捦ㅦ㠶㘶㤷㄰㡤㔲㜲搸攸戶戶挵㑤㡢㌸㡥挶㕡㡤㡤戳慣㠲㜴㝡搳戸戶昶㤹㤹搶愶戶ㅥ㑤攴捦㙡戵㥡㜳㔶㕢慦愶昱换㜲㔶愳〳㙣慢㙤㥡㤷㘹㥤㥥㘹戲扡㜲愱慥挹敥挳挹㜹慢戹扤愱㝤㜹捦愶戹㙤搶慣㑣昳㝣㡢㤰㥡愶㠹㡢ㅢ昲慡㙢㔷晣㔵㜵搹捤慦㘵搲㔱㘸㑦搳搸〵㤹搶㜶㈹戱ぢ挳㝥㔸搷㜰㤱戵㈸㘹ㄷ㠷㔴㍦㡦ㄷ晢㙣㜶㐳搳㝥㔶㙢戳搵挸㑡搸㤳㠳㍤㈰㈱挸敥㠷㈲㔳㝡㜵搸㑢慡扢戳昱㜱㕤㔸㡢搱て㘲慦改㉤慤㑤ㄸ㤰㔳㕢挶㉥㙥ㅦㄱㅡ㌲愹㐱晥ㅦㄶ㡥つ㤹㘶㘵㥡㐷㠴㠶㠵搲㐳㘶户攷挷㔹㑢戸㥣㌰晢挳挹ㅣ㐰昷㕤㈰扡㑣㠹㐵捣㠱㔴つ㠲㔰㕤晦㡣㉤摥㕤て户扡敡晡㑣㜵㝤戶扡㍥㔷㕤㥦慦慥户慡敢ぢ搵昵昳慢敢ㄷ㔴搷㌷㔴搷ㅦ㔱㕤扦㄰ㄸ晤愹敤搶慤摡昹〴扥㕦㝤搳㍢㠷㥥㌱昹挶昹ㅦ〴摥晢敢㡢㘹挵㡤㕣收㠸摤戰㤰㥥摢摣㔰㐰搳㥤㠶㐷㐳晣㌸慤户ぢ愱㈱搳ㅡ㥡㐷㌸㠶㘹㤹㘵捥㘲挸摣ㅤ敥收ㅥ㄰挶㥥㡣㌸㉥ㅥ㌶〷㔳㌵〴㐲愹㔷戰〶㕣㡢摣㜶挷㡤改㜹挴攵愳慦㥣搶㜰改㥥㡦㝥㜷戰攲昴㈲搵て挳挲〰て㙤づ㔷搱づ慡㈲收㕥っㅡ㠲㌰挲㜴㥤ㄸ㡦㤸ㄱ慡愲㄰㑡晤搱愹㘷昰㑢㜷㉦扤㜶搲㔷搳敦戲晥昵摡㡢ぢ〷㕦愶㌸㠳㐹㍤㜱㉣㡣㌹挰㙡挸㉥㙥搴晤㌳ㄴ㕤㄰㑡㌹慢ㄹㅥㄶ㑢㐷戰晥戹っ㌷〰昴㑥㈴㥡ㅡ㌲㍢㤷㘹戴戰ㅣ㑥づ㤹扤㈰戳挸ㅡㄱ㌱ㄳ慣㌴〹㘱愴ㄸ㝡㜲㉣㘱愶愹ㅡづ愱搴攳㑥㍢ㅥ晡㤵昹㔰敦摥㉦㑦㌹㙤㜱户ㄷ㡥ㅥ㜴捣ㅤ㡡㤳愸戴㘳ㅦ㉣㙣昶㌰ㄹ挱ㅡ昶㠵㌰㐶㌲捥㤴㜸挲ㅣ㐵搵㘸〸愵ㅥ㜴㉡扤敦晡㍤㜷㕡扥晦ㅥ搳㉥扣昸挴〶敢愷〳摦㔳摣㝥愵搲戱㔸搸ㄴ㤲挷㌱攸㜸〸㘳〲㕤㈷愲㌳㈷㔲㌵〹㐲愹扢㥤㝡收㥤㜸散挲ㅤ㑦㥡㍦晤挶昵㌷㉤搸敤改㌳㥥㔵摣㉦㐸㍤㔳戰昰㜳㤰扣ㅦ㉢㥤ち㘱㑣㘳攸挹昱戸㌹㥤慡ㄹ㄰㑡摤收戴愳捦㌵㙢扡㥦戴摤㡡戱㜷㕥㝡㙤捤㘱㘳㝢扥愷戸㙢㤲㜶散㡦㠵捤㈶㜹ㄶ㙢㤸つ㘱捣㘱㥣㈹昱㤸㌹㤷慡㜹㄰㑡慤㜶㉡摤昶㤱愵摦摥昷挳愹㌳慥㍣㜹捤摡㠶户㑥㜸㕥㜵㈷ㄸ㕦攳㐰㠸晦㘲㐳㍡〸敥收挱っ昴ぢ〸㙣㐸㌱昳㄰慡づ㠵㔰敡㉡愷晡昴㌱昹ㅦ㜷㝢敥昰㔱攷散戵捦昹㍤敥摢攷㄰挵㥤戰㔴㕦㡦㠵㑤改攳挳㠱㌳㌳㄰㐶ㄶ〲㝤ㅣ㌳㜳㔴攵㈱㤴扡㔴搷㤳㔹㜵晦敡攰挳愳㑦㍥慡㔷户愳㉥㥡㝣戰攲㝥㕥敡㈹㘰㘱㔳敡㤹捦愰ぢ㈰㡣〶扡㑥㡣㐷捤㈳愸㕡〸愱搴㜹㑥㍤㍦摥昴搷㜷〶㝤㔱㌷收慣户晦㌲攲戹愶㥡㑦ㄵて㈵愴㥥㈶㉣㙣㑡㍤捤っ摡〲㘱㉣愲敢挴㔸捣㍣㤲慡㔶〸愵捥㜶敡〹㝤戱㍥㜱昸慦摦摣敦㥣晡ㅦ扥戹攵戰昵扦㔱㍣㕡㤱㝡摡戱戰搹㘳㘵㌱㙢㔸〲㘱㉣㘵㥣㈹戱愸戹㡣慡攵㄰㑡㥤敡㔴晡慦㥢㙦扢昱扢愷づㅤ㝤㜶捥㝡㘶昴摣㝦㈷ㄴ㡦㡥愴搲愳戱昰㕦㡣㤵㘳㔸搷㉦㈱㡣㘳ㄹ㜱㕣㉣㙥ㅥ㐷搵昱㄰㑡ㅤ攷㔴晦敥㤲攷㝥戵敢攷搳挷㕤㝢㥣㜹敢〷㕦摣晥㥣攲㜱㤹㔴㝦㈲ㄶ㌶㝢㥤㑦㠲㤳㜹㌲㠴㜱ち攳㑣挱捣㜷㉡㔵愷㐱㈸戵捣愹㜴捤挸㘷敦㝤㘲摤慥愳㔶慦晣㙡昰㑢㙢㤳摢㈹ㅥ〷㑡愵愷㘳㘱㔳㍡昴っ〶㍤ㄳ挲㌸㡢慥㥣改捦愶敡搷㄰㑡ㅤ改搴㌳敥慣㤳扥换摦戳摢搴㜳㡥㥣昱㔸昷换慦㌹㑦昱㔰㔳敡昹つㄶ㌶㝢攵㔶戰㠶㜳㈱㡣㤵㡣㌳〵㤵㥥㐷搵昹㄰㑡ㅤ攱㔴扡晣㡡㑦愷慤㜸敦㥣㜱㙢㈶㝤㝡挸ㅢ敦扣㜹愸攲愱慤㔴㝡㈱ㄶ㝥㡥㤹敦㈲㔶㝡㌱㠴㜱〹㐳㑦挶っ㝣㈹㔵㤷㐱㈸㤵㜳摡昱㥢ㅦ挶昷晣摢户㡢愶㥤晢㜶㈸㜸晤㝤户㥦愱㝡ㄳ㡣慦㜱㌹挴捦搱㡥㉢㄰挷㕣挵㠸㔷㐲㘰㌷ㄷ㌵慦愲敡㙡〸愵づ㜱摡昱㐲慣搷㠷㤷捥㜸㘶晣㘹晦㕣戴晥て㝢㡤㕦慡㜸㠰㉦敤戸〶ぢ㥢搲搹搷㌲攸㜵㄰挶昵㜴㥤㠸㤱扣㥡慡ㅢ㈰㤴㥡敢搴昳搷改㘷收捥慢㍢㝤昲〳㑦㑤慢㥦昴挳㤶㝢㈸㥥㐳㐸㍤㌷㘱攱攷㔸摦㥢㔹改㉤㄰挶慤っ捤㍤捥㙤㔴晤ㅥ㐲愹改㑥㍢㕥ㅡ晥攳㝥㝦㡢㕡ㄳ慦㝦㘱㘶慦捣㔱〷㝤慡戶㈳ㄸ㕦㘳つ挴捦搱㡥㍢㄰挷扣㤳ㄱ敦㠲㐰㍢愲收摤㔴摤〳愱搴㐴愷ㅤ㤳昶㌹㙣攸戵挷㡣㥣㝣晣㠶搷づ㕦㜴捥㍥晢愸㍥〴攳㙢摣〷戱㈹扣摦て㥣昹〷㝡㍣〰〱摥ㄳ收㠳㔴㍤〴愱搴㈸愷㥥昳㕦摣㜰攰慡慦晢㑥扡戹攱晤攷㝥㥣㜸㙦慤摡㥥㘰㝣㡤㠷㈱晥㡢〹散ㄱ戸㥢㡦㌲搰㘳㄰戲戳㝢㥣慡㈷㈰㤴㑡㍢搵敦㌸㜳搸〰昵昵昶愳捥〹晤㜶挶㝢慦㥤㌶㐷昵㈵ㄸ㕦攳㈹㠸捤摥挶㥦㠶㤳昹っ摤㥦㠵挰㌶ㅥ㌵晦㐸搵㜳㄰㑡㐵㥣㑡户扡㍦搵㌰㜹晤㠴戱昷㌵㍤搱晣敥㜱㐳搶昵㜸〱收晤㥤愳晤㜱慤㤹愵㌸㝦敡㌸㌵㡢っ挳㐱攴愶㥣㤳攲㤴戴㄰㉦㈴ぢ攱㜰㍥ㅥ捡㐴㌳㌵晤ㄱ㜶㔳㑦㝥戸摦攸㔱㌸愰愱㌹摦戲㔴捥㠶㜶ㄸ㤳㘹戳㍡㑥㡥〶㍢戶㌱㉤㡢㥢昳㙤㝤晤㡤戳摢㌳敤搶昶㕥㕢㐷㤰㌲户搹㌸㔷戴摡愴扥㥤扣㙥昳㌲㡤㡢慤搱换ㅡ㙣昳㡥ㅥ㌳捥ㄴ㕢戲㤵慤ㄳ㕡慤㈳㡢搶戲ㄶ㡤挶愵㡣㈵ㄲ扢㙣㉤㙤㤳摤慥㝥㘳ㄷ戴戴㔹捤搲扣挱㑤㌳ㅢ㜲ぢ慤搶搹ㄶ㉦㠴㔸㜹㔹搵摥㌴㌹愷慢㠳㘷㌴㘳㐵㜱〲㥡ㅦ攰搶ㄶ挶㉦㙢户㥡昳㔶ㅥ敤㕤㘴戵戶㉦㥦㤳挹㌶㕡摢㤴㐰散㍡㘱攸㔳愲㥥搰㤲㕢摣㌶戶愵戹扤戵愵戱搴㌲㍡扦㈴㠳㔳攴晣戴㤶扣㠵㌳摣慥晣㔴愹慡㉥㕤㤴慡摡搳敦㌴㤳㜱摢㠶㐹㐷戸扡㜸㐷昴昹㜶愵挳㙥搸㉣慣ㅤ搶愲搱攲㤸慣ㅥ搸㐹㌰㠹换㌰㝢㔴〶扡搶㠹㔷㡤㠸摥扤㌲㕡摡㔸散戹晦扦攰敡敡慤㥣戵ㅦ扦〴㤷ㄱ㈶㘵㥡昳㡤㔶敢㐶慦㜹㈹戶挸㝣ㄱ愲㘶㉦㙣捤ㄵ搹敢ち㠴㕡愶㤶搷㉣㙤挸户㉦㌰ㄶ㔸つ昳ㄷ昰㌰㄰搷挵㙡㙢㐹㙤搹挷㝣ㄹ㉡昳ㄵ㡡㍦㐱〴〲㔵挶慢〴ㄹ〱昳㌵扢㕣㌳〰晦㙦晥〵㡡㙡㜸㤹㜲㐱〴㔷慦摡㙡㥡㈶戴戴戶㜵改攲户㤶㤳㌲㙤ぢ摡㌹㍣㌷㙥㘴扣戵ㄴ慦㐳搴っ㠴攸昴晡㐷ㅤ㐰㕤㜹㤹愷㘷搳㌸慢㤰挱挵㌵搹扡㔵愶愶挹扥㕥㌳捥㙡换㤹扣戰㌳ㄹ摢捡㌲〳㑢搸昸㝢㌴㜱昴㕢换摡挷㘵摡㌳摤㥡㜰㠹〸扤㘴〲㌴㔸扣散㈵㝡昶ㄴ㥤昶づ㌸㈵㐴〸捡愲㉢㑡㜷㔱搸㤱戰攱㘰㝢愹敡攲挸㡤慦〴摡扥ㄳ㔶挲昰づ昴搲㑢㍤戸〲㤵㥦㘸㌵捦㔹扥挸㙡㈳扣搶搸㈸㤵摥捤㡢挱㘶攴戲㜳摢ㅢㅡ摢㠶愱愵ㄳ㕢㕢ㄶ㉦晡㌹攳㌰㤶昹〶㠴晥搴散㡡㔱扣改敢〴扡慡扡㉤㘱摦搴搷㔷搵㌲ㅡ㌵收㉥ㄴㅣ慤〸戶〱晦挹挷㝣ㄳ晦〵㌶㘶慢ㄹ〴挴收㕣ㄶ慢〱扥㐷ㄳㄸ㥡搳㙡挹㠵扥㕡㈹㠰敤㥥㑤〷戴戴㉥捣戶戴㉣攴㜸敡㈵愵戶〵㤶搵捥㡢㘷摤㥤㡢㠵㜲㔱㔰愹㉥㕤㑡慥㜸戹慥戲敤㡣昸挶㍢㄰㍤㐷㌷㌶昶搳ㄱ摢㡣㜷愱敡㠲换㜸挶㍡㉣散㌶搱㙡㘹㥤摦㤰愹㥦㌳㙦晣㥣㠹慤㤹收昶〹㤹㕣㐳㈳㉥㐲搶㘳摦㕤㘸㕦ㄲ㡥つ㕢搶搸戶㑣敤〰㌲㜸㘵敡攰㠵〷㡤㌸戹晦㔶㌳敥晡敤㘵昳㍥㜹晡㡤扦愸扥㡥愱散㡡搹敥〸摦ㅦ㕦昳㝤〸搵〷㌰㑥㌲㔸㉥晤㤸晦㐰搹晣㈷挵㠷㄰㤸㉡㠴㝣捣ㄴㅦ摢㐵戵〷晥攷㙣㘱㝥㐲昱㈹㠴ㅡっ挱㙤搵晣っ㐲㝦㔴㄰昱㌹〴搸㡤挶㝡〸ㅣ㈸㐵换扢昲㑢㔸〲㈶敤ㄵ㙣㙡〸㙣散㑥㤳昴㤹㈴捣㈴㔹捡㐰㜰㕦ㄲ㙡ㅣ㐳搹㜵扢扤攰㈶㈴晣㐸晦㉥㠰昹㤳昰ㄳ敢㈰㌹㈶〷愱㡢㠴㙡ㄴ㡤㉥㄰摤戰㈹㕡戸㝡ㅦ㔰㉡〴㥣㄰挲摢ㅡ㘶つ㠴㡡㐰㈵㠴ㄸ㈸改㡦晡敥愷づ㐲捣㌰搴攵㉢ㅣ〰㍥戰㌱㥢㡡挲捦㡦㡣捦㄰摣㤷㡣㑦ㅤ㐳搹挵挵〴㈲昵㘷㉢戶㘲㤳㍦〶捣㥦㡣摥㌰㥢摢㔰㙣ぢ攱㈲愳㡦㕤㔴㐹〴ㄱ〲戶㈷愸㉦㠴㑡㐳㈵〴散㠰㤲晥愸㜵㙥〲㔲㔰㤷ㄳ搰㡦㌱捤㡤搸搴㜰昸昹ㄱ昰㐶㈵〲㕥㜷っ㘵㔷㌵㐷㈰㔲㝦戶㘲て㌶昹戵㡡〴っ㠶搹ㅣ㐲㌱ㄴ挲㐵挰㕥㜶㔱敤㡢㈰㐲㐰㠸愰㌰㠴ㅡ〵㤵㄰㄰㐱㐹㝦搴㜳㙥〲㐶㐲㕤㑥㐰㠲㌱捤㡤搸搴㘸昸昹ㄱ昰㘸㈵〲ㅥ㜱っ㘵㔷㔸挷㈱㔲㝦戶㘲㈴㉡㔵晦㔷㤱㠰搱㌰㥢㘳㈸挶㐲戸〸ㄸ㑦ㅤ㌷〷㙣〶攳ㄱ㐸㐸㤸㐸攵㈴〸挵慢慦㐲挲㘴㤴昴㐷摤攵㈲挱搸てㄶ戹扡㔶㌶挵㑦㠳㈵㘰搲㕥㑥㤲搸搴㈴㠴昴㈳攲愶㑡㐴摣攸ㄸ捡㉥〱敦㠷㐸晤昱㌵攷愱㍡戵扡㈲ㄱ〷戲㌵〷㔱ㅣっ攱㈲攲㄰扢愸愶㈲㠸㤰㜰㈸㐱㠷㐱愸改㔰〹〹昵㈸改㡦㕡攵㈶㈱〳ぢ㑥㤶ㄳ攵㉢㥡㠳㈵㘰搲㕥挱愶㘶㈰愴ㅦ〹ㄷ㔴㈲攱㝣挷㔰㜶晤㜹ㄶ㈲昵挷搷㙣㐴㜵㙡㘵㐵ㄲ㥡搹㥡ㄶ㡡㐵㄰㉥ㄲ㕡敤愲㥡㡤㈰㐲㐲ㅢ㐱敤㄰㙡㉥㔴㐲挲㘲㤴昴㐷㥤攱㈲挱㥣〳㜵昹㑡㉥㘷捣㡤搹搴㍣昸昹ㄱ㜰㝣㈵〲㡥㜳っ㘵搷挲て㐲愴晥㙣挵㠹㙣昲㉦㉢ㄲ㜰㌲捣收㈹ㄴ愷㐲戸〸昸㤵㕤㔴〷㈳㠸㄰㜰㍡㐱㘷㐰愸㐳愰ㄲ〲捥㐴㐹㝦㔴扢㡢〰攳㙣㔸戰㡢昴ㄹ〵攷挰ㄲ㌰㘹㉦㈷㐸㙣敡㔰㠴昴㈳攱㠸㑡㈴㌴㌸㠶戲㉢昲㠷㈳㔲㝦㝣捤㡢㔰㥤㥡㕦㤱㠴㑢搸㥡㑢㈹㉥㠳㜰㤱㜰㌹㜵捥㥣㤰㐱㈰㈱㘲ㄵ㤵㔷㐲愸ㅣ㔴㐲挴㔵㈸改㡦㍡搴㑤挴敦㘰挱㥣攰㐳挴戵戰〴㑣摡换㠹㄰㥢捡㈳愴ㅦㄱ戳㉢ㄱ㌱㑢ㄳ攱扤㘵挰㍢〰晤昱㌵㙦㐵㜵㙡㘶㐵㈲㝥捦搶摣㑥戱〶挲㐵挴㥤搴㌹㐴㉣㐰㈰㈱攲㙥㉡敦㠱㔰㐷㐰㈵㐴摣㡢㤲晥愸〹㙥㈲敥㠷〵㐴挴换㔷昶〱㔸〲㈶敤ㄵ㙣㙡㈱㐲晡ㄱ戱㑦㈵㈲昶㜶っ㘵昷㌴㥡ㄱ愹㍦扥收ㄳ愸㑥愵㉢ㄲ昱ㄴ㕢昳㌴挵㌳㄰㉥㈲晥㐸㥤㐳㐴ぢ〲〹ㄱ捦㔳昹〲㠴㍡ㄲ㉡㈱攲㐵㤴昴㐷敤攵㈲挲㕣〴㜵昹㡡晥〹昸挰挶㙣慡ㄵ㝥㝥㈴っ慡㐴挲㐰挷㔰㜶挳㘵㌱㈲昵㘷㉢摥㘴㤳〷㔴㈴攱㉤㤸捤户㈹摥㠱㜰㤱戰捥㉥慡㈵〸㈲〴晣㥤愰昷㈰搴㌲愸㠴㠰昷㔱搲ㅦ搵挷㑤挰㔲愸换〹昸㤰㌱捤㡤搸搴㜲昸昹ㄱ㔰㔷㠹㠰㕥㡥愱散收捦㌱㠸搴㥦慤昸㤲㑤敥㔱㤱㠰慦㘰㌶扦愶昸〶挲㐵挰㜷㜶㔱晤ㄲ㐱㠴㠰敦〹晡〱㐲ㅤ〷㤵㄰昰㈳㑡晡愳扡戸〹㌸ㄶ敡㜲〲慡慡㐹挰㐶㙣敡㜸昸昹ㄱ昰摤扦㉢ㅣ㉥㝦敢ㄸ捡㙥㍦㥤㠴㐸晤搹ち㈶ㅦ愹慦〱昳㍦㕣敥づ戳搹㠳愲㈷㕢搷㜱〲㔵㘷ㄷ搵挹〸㌲㠰㠱㤸戸㘴㙥〱愱㜸㈷㑡〸搸ㄲ㈵晤㔱㥦愰づ㝤〲㘵㥥〲㜵㌹〱摢〰ㅦ搸㤸㑤昱晥㤶ㅦ〱敢㉡ㄱ昰慥㘳㈸扢ㄵ㜶〶㈲〹〱㍢戳挹㙦㔷㈴愰㍦捣收〰㡡㕤搸扡づ〲〶㔱攷捣〳㘷㈲搸〰慥搲㙥㔴敥づ愱㜸㥢㑣㐸搸〳㈵晤㔱慦戹㐸㌰〶挳㠲〹㌱㔶㑥挴㔰㔸〲㈶敤ㄵ㙣敡搷〸改㐷挴ㅦ㉢ㄱ昱慣㘳㈸扢㔷户〲㤱㠴㠸〴慡㔳㑦㔷㈴㈲挵搶愴㈹㠶㐳戸㠸搸挷㉥慡㜳ㄱ㘸〰扥收〸㠲昶㠵㔰攷愱㈸㈴㡣㐴㐹㝦搴晦戹㐸㌰㔷㐲㕤扥㤲㘳㠱て㙣捣愶捥㠷㥦ㅦ〱㜷㔵㈲攰㑥挷㔰㜶摦昰㈲㐴ㄲ〲愶戲挹㙢㉡ㄲ㌰ㅤ㘶㜳〶挵㑣戶慥㘳㈴捣戲㡢敡㘲〴ㅡ挰搵㤹㑤搰ㅣ〸挵晢㠵㐲挰㕣㤴昴㐷摤攰㈲挰㌸〰ㄶㅣ㉥㐷捡㐹㌸〸㤶㠰㐹㝢〵㥢扡っ㈱晤㐸㔸㔵㠹㠴㉢ㅣ㐳搹㑤换㉢㄰㐹㐸挸愲㍡昵摢㡡㈴攴搹ㅡ㡢愲〰攱㈲㘱㠱㕤㔴慢㄰㘸〰扥㘶〳㐱㐷㐰愸慢㔰ㄴㄲㄶ愲愴㍦敡㍣㌷〹㑤戰攰挶愶捦愶搰〲㑢挰愴扤㥣〴戱愹慢ㄱ搲㡦㠴㌳㉡㤱㜰扡㘳㈸扢㘳捡ㅢ愰㐲挲㌲㔴愷㑥慢㐸挲㔱㙣捤搱ㄴ挷㐰戸㐸㌸㤶㍡㘷㑥攰㡤搴〱昸㥡挷㔳㜹〲㠴攲摤㔴㈱攲㐴㤴昴㐷晤搲㐵㠴㜹㍤搴攵㉢㝡㉡昰㠱㡤搹搴つ昰昳㈳愱慤ㄲ〹慤㡥愱散㜶㉥敦扥ち〹攷戰挹㡢㉡㤲戰〲㘶昳㕣㡡㤵㙣㕤挷收㜰扥㕤㔴户㈰搰〰慥捥〵〴㕤〸愱㙥㐳㔱〸戸〸㈵晤㔱昳摤〴摣ち㜵㌹〱㤷〱ㅦ㌰㌷㘲㔳扦㠷㥦ㅦ〱㠷㔶㈲攰㄰挷㔰㜶ㅦ昹づ㐴ㄲ〲慥㘱㤳て慥㐸挰㜵㌰㥢搷㔳慣㘶敢㍡〸戸搱㉥慡㍢ㄱ㘸〰㔷攷㈶㠲㙥㠶㔰㜷愳㈸〴摣㠲㤲晥愸晤㕤〴ㄸ户挱㠲昹挰㘷㔳戸ㅤ㤶㠰㐹㝢㌹㐱㘲㔳昷㈰愴ㅦ〹ㄳ㉢㤱㌰挱㌱㤴摤挴收㍤㘹㈱攱㝥㔴愷挶㔵㈴攱〱戶收㐱㡡㠷㈰㕣㈴㍣㑣㥤戳㈹晣〱挱〶攰㙢㍥㑡攵㘳㄰敡㐱ㄴ㠵㠸挷㔱搲ㅦ㌵摣㐵㠴昹〰搴攵㉢晡㌴昰㠱㡤搹搴㐳昰昳㈳㈱㔴㠹㠴扤ㅣ㐳搹ㅤ昶㐷㄰㐹㐸㜸㤹㑤ㅥ㕡㤱㠴㍦挱㙣扥㑡昱ㅡ㠴㡢㠴搷敤愲㝡ㄴ㠱〶㜰㜵摥㈰攸捦㄰敡㜱ㄴ㠵㠰扦愰愴㍦㙡愰㥢㠰挷愰㉥㈷攰㉤攰〳收㐶㙣㡡㌷敥晤〸搸扥ㄲ〱㝤ㅣ㐳搹㍤㝥摥愵ㄷ〲晥挱㈶㙦㕢㤱㠰て㘱㌶㍦愲昸㤸慤敢搸ㄴ㍥戵㡢敡ㄹ〴ㅡ挰搵昹㡣愰捦㈱ㄴ㙦昷ぢ〱敢㔱搲ㅦ搵换㑤挰戳㔰㤷ㄳ昰ㄵ昰〱㜳㈳㌶挵㈴〲㍦〲扡㔶㈲愰㡢㘳昰收ㅢ搴昰晥攵㘶摣㈷敥捥〶ㄷ收㌵㔸㑢㜹㘳慢㔷〱愹搶㘳ㄷ户戵户挸㕤戸㥥㠵㜱㉤搳㕢摡挷㌵戴㉤㙡捣㉣摦慡攰㉣ㅣ戰挰㙡挶㍤昲㔶摣㉡昷攸㕡ㄶ㉤戲昲㘶㘱㜶换攲搶㥣㌵㜹摣晦挲㍤㜴慣ㅦ扡㑥㙥㥦㔷㉢㝣晥戳摢挲〸愱㌰㑡昰愹慡㜹ㄹ〱扤㜷昷㈴攱摢㜵㈷㕥ㄶ㠳〰搶㜵㌰㍡愷愱扤搱敡㕥㤰扢攰戲㕣㕢〰㡢㐸㍣挸㜷㉢捣㔹㠰扢㕥攳㝡ㄶ㈶戶㌶攴ㅢㅢ㥡㉤㜶挶搶㌶㜴慡㌵ㅦ㐹〶㌳㕢摡ㅡ㤸㕡摣戳㌰〷户愵摡ㄶ昱㝥㘹㙥昹㤶㈵㈵戹戱㕡㔳ㄸ搳搰摣㠶㙡愴ㄷ戹㕣㔷㤸扤愰㘵㈹㝥收戱戸愹㜹㘲㘶㔱摢晦㐴慦㈸㜶㡢㝣愴㙢㔴戵慡慥㔶戵搵戵晦㘹晦ㄸ㍦㘱ㅢ摢捡捥〴敦㠷㜱摡摥㡡㕣㙤ㄲ㈶㜵㐴㈰扢㔲㐸ㅦ㔶搵扣㠲㈵敦㥤㔱㔷ㄷ㝡搲ㅡ搸搶㤲㥦㉦昸摥㘱㉦晥㜶㘶㐷挰捤つ㘸㑥て㘶ㅢ㑤㤹㌸㜷㜲㐷挲捦㝦昵㐳㤴ㅡ㈶て㙣㜲㝥㐵㙦㠰㝢搹㐳㠸㌹ㄷㅣ㔱搸㌲㌱ㄲ㔸昲づ换㐰㐱㌰ㅣ愱扤㍡ㄶ㈷攰ㄶ㝤㡦挲搴㑣搶㙡㐴㘶㐱㔳愶扤㤷㕤㘰㡡〷㝥愸搰收搸挶戶㌴㌵㘵㌸攴昸㜳ぢ㐹㝡慦㉤㡣㕥摣摥㠲㥣㝦戳〰㈱攳搲㔱㘵㤶㐱㤵㔹㘶攷〰ㄴ㘶㌱攳㐸㤶ㄹ慢㘵㝥愶戵愱㝤㐱㔳㐳慥㤶〵㘶〵晤㑦㡣㔵㙣晣㕤㐱愶晥攸戹挴㥢㔴㘰摦摡㐷㜷て㐳ㅥづ愹㘳昷㘳㐴㔷㉢〳晦搴㝦㤸㤰㠲㠹㐷㜶㈸㘶㌵愲搵㜰挷㠳㐹捣㙥捡攷㜲㙢ㄷ换㥦ㅦ〷㡤㑣㑥㡡昹㈴㌴㥢㕤〰攷〲扦㕤搷㐲㙣㌴㕢愱ㅢ〰㠱愹㉤㤹㍣敥㜷攳愷㔳摤㥣ㅦ㑥搵愲㙢㌹搵戴〶㤹㍦㌲ㄶ㈹㐹㐸㜵㕡搲㤰户㕡㙢愹㤸㡤ㅦ㠶㜵㘵收㠹㘱昷㈱づ〳扢㔴搵搴㜴慦昵慢㙢戲㡥㌵搰戹㉢敦晥攱搹攴戲昸ㅦ敦㥦ㅡ挹戶〷〲㔸ㄱ晣慡っ搲攴㡦㤱搴敢㈸㜲㝤㍣〰㠳㠰㙥㄰㌵㙦挰攸敤㥢搲㔴づ㈴㝣㤸〰㜵㤵㥦ㅣ㌱挹愴ㄶ〹ㄹ㤲㥤㔲㈳㉢搲摤㤵㔵㘲搸〹㈵戵晡㜷㑣〶㝥捡搱㙡攵〳昶晣捡散ㄵ㜶㐷㜵㜵㔷㜴戵攱捤挸㉢慢ㄶ挱㥡㘶㕢㤲㙥愲㜶㐲ㄳ㡣㕡戴戸ㄷ㌷ㄶ挴慦挷て㜸㠶㐷㠶㤷ㅤ㍦〴〲愶㤰㄰㔰㙦挲㐵慦㝢ㅤ㤶〳〱㜶㥣搹㥤敢摥〳㐲㌱戹㠰㐷〰㔸搴晢㉢挵㡣〲敥戳慡㡣㥥㠰㙣敤晣㔸愷搳㐹㔲晤ㄳ㉥㥣㈸捤㕥㡣晣㈱㤶㌸晦ㄴ挷㘳㄰摡捥挷㈳戳ㄶ搸㡤收ㄶっ攲ㄴㄴ㔳ㄷ昴㝡㜰搳ち〴攴㌸㘴㑢㘰捣慤〸晣搴ㅦ戰㌵〱扤〹昸っ〰㜶戴戱つ㑡摤㌵㠱晣晤搰慢搰㈲戱㘰〳晥㤳て搸摢づㄸ摣㈲晤ㄲ㔲搷扡㌳㌵㜶慤㝤ㄸ㜴㝢〶晤ㄱ㑡㉦㝢㍦㐱㘷戳搷ㄷ㤰㑤摤挳㈸㔶㉦攴敤挰挰㕣昳ㄲ昲㜶㠲戶㜳昲㤸敤㈰攴敤㉣㐱散㠲敡ち㤵㕥つ捥〷捥ㄶ搲てㄸ戳㍦㠱㑣㠱昰〱っ㈰㘰ㄷ〲っ〰㠴扣㠱㈸ㄵ挹㥢ㄸて昹㤱户㉢㌰㈰㡦㤹ㄱ㍡㈸て㙣㥣愱户ㅢ㠳敥捥愰捣㘲昰㤲挷搴〵㥢扣㍤〰搹摡昹〱㔵攷㐳㡦搹づ挲摥㥥㡣捣戴㠷ㄲ昶㠶㐰摢㌹㝢㝤攰㠶㍦㘴つ㌰〸ㄶ攴换ㅣ〹扤ㅥ㔴㌸散つ〳挶摣㡢挰扥晥㠰㄰〱㘱〲㤸㔲㈱散㐵㔰㉡㙥扢㤳㘳昱ち摢㙥っ㌰㄰搸捦ㄵ搷戵敤挶ㄹ㌷挱戸捣㠲昰ㄲ挸搴〷㈱搰攴昱㡤㝣㈲㤰慥㘳ㄹ挵挴〸攱㉡挵㈰㐳㔱㉡攱㙡㌸戴㥤㜳戵ㄷ摣昰㔷㘵敥捤㈰㔸㤰㉦搳㈹㝣戸摡〷ㄸ㜳〴㠱㑣戵昰〱散㑢挰㐸〲㤸㝤㈱㕣㡤㐲愹㌸搲昸ぢ㌴㥦捤㜴っ㌰㈰㡡ㄹㄸ㍡愸㡢愸戱っ㍡㡥㐱戹㕦昰ㄲ㌵ㅡ㍡㥢㈸㙥愶昲昱ㄲ挵〴ち㈱㙡〲㠳㡣㐵愹㠴愸㐹搰㜶㑥ㄴ㌳㉥昰㔷㘵㑥㘶㄰㉣挸㤷㈹ㄷ扡挹慥㑤㜲ち㌰收㝥〴㌲ㅤ挳〷㌰㤵㠰㘹〴㌰㐳㐳㠸㥡㡥㔲㤱㈸晥㠴捥㠷愸㤹挰㠰㈸㘶㘱攸愰慥㑤㜲㝦〶㥤挵愰捣愶昰ㄲ挵ㄴち㥢㈸㙥㤲昲昱ㄲ㜵㄰㈰㐲搴ㅣ〶㘱愶㐵〹㔱昳愰敤㥣㈸㘶㘴攰慦捡㍣㠰㐱戰㈰㕦愶㘵攸㈶㔳攱㙣㝤〷〲㘳ㅥ㐴㈰㔳㌶㝣〰〷ㄳ昰ぢ〲敡〱㄰愲づ㐱愹㐸ㄴ㝦㜱攱㐳搴㘱挰㠰愸㥣㉢愸㙢㐴搵㌳攸攱っ捡㡣ぢ㉦㔱㑣戳戰㠹慡戸改戵〰㈲㐴㘵ㄹ㠴搹ㄸ㈵㐴攵愱敤㥣㈸㘶㙤攰て搷愸ㄹ㐴ㄳ挵搴つㅦㅥち挰㤸昳〹㘴㕡㠷て㘰〱〱つ〴㌰搳㐳㠸㍡〲愵攲㌴㠵摦㈵㔶㤸愶ㅡ〱〳㔷换㕤㜱㕤㕣㌵㌱㙥㌳攳㌲㌹挳换搵挹搰搹㕣昱㄰㐳㍥摥㐱挵㝣つ攱㙡ㄱ㠳㥣㡡㔲〹㔷慤搰㜶捥ㄵㄳ㍣昰㔷㘵戶㌱〸ㄶ攴换㉣て㑤㠵敢㘸㠲て㌱㌰ㄷㄳ挸っ㄰ㅦ挰ㄲ〲㤶ㄲ挰愴㄰攱㙡ㄹ㑡挵㐱挵ㅦ㔱晡っ慡愳㠰〱㔱攷戸㠲昲㔰捥㌹㥡㌸㥡㐱㡦㘱㔰㈶㜰㜸㠹㘲搶㠶㑤㔴挵㘹敡㔲㐰㠴愸㘳ㄹ㠴挹ㅤ㈵㐴ㅤて㙤攷㐴㌱〹〴㝦戸㡡捦㈰㥡愸㔵㔸搲㍣戸愶愹ㄳ㠱㌱㑦㈲昰㑡㝦挰挹〴㥣㐲〰㤳㐶㠴愸㔳㔱㉡ㄲ攵㜷㐷㄰㠷㕤扦〲〶㐴㕤敢ち敡ㅡ㔱愷㌳攸ㄹっ㝡㉢〰㕥愲㤸搵搱〹㔱捣昹㄰愲捥㘲㄰㈶㝦㤴㄰昵㙢㘸㍢㈷㡡㐹㈲昸慢㌲捦㘱㄰㑤ㄴ戳㐴㝣㠸晡つ㌰收ち〲㤹㐱攲〳㌸㤷㠰㤵〴摣ぢ㠰㄰㜵ㅥ㑡㉥愲捡ㄳ㜰㐱搴〵挰㠰㈸㈶㤵攸愰㉥愲㉥㘴搰㡢ㄸ昴〹〰扣㐴㌱敢愳ㄳ愲㤸ㄳ㈲㐴㕤挲㈰㑣づ㈹㈱敡㌲㘸㍢㈷㡡㐹㈴昸慢㌲㝦换㈰㥡㈸㘶㤱攸㈶扢㐶搴攵挰㤸㔷㄰昸㠲㍦㘰ㄵ〱㔷ㄲ挰愴ㄳ㈱敡㉡㤴㍡㠸挲愳っ㝣㌶扤摦〱〳愲㤸㜸愲㙢㜵ㄱ㜵つ㠳㕥换愰㑣ㄲ昱ㄲ昵ㄶ㜴㌶㔱ㄵ攷昳户〱ㄱ愲慥㘷㤰㜷㔰㉡㈱敡〶㘸㍢㈷㙡ㅤ摣昰㔷㘵摥挸㈰㥡㈸㘶㥢攸㈶㔳改散昸㙥〲挶扣㤹㐰㘶愲昸〰㙥㈱攰㔶〲摥〷㐰㠸扡つ愵㡥昹㍣ㄶ慤㌰㥦摦づㄸ戸㘲㡥㡡㡥敢攲㙡つ攳摥挱戸捣㈷昱㜲挵㈴ㄲ㥢慢㡡昳㌹㔳㑣㠴慢扢ㄸ㠴戹㈶㈵㕣摤〳㙤攷㕣㝤〷㌷晣㔵㤹昷㌲㠸收㡡㠹㈹扡挹慥昹晣㍥㘰捣晢〹㘴搲㡡て攰て〴㍣㐰〰昳㔸㠴慢〷㔱㉡づ慡㜱昸ㄹ慡捦愰晡㍦㘰㐰ㄴ㜳㔹㜴㔰搷搹攱挳っ晡〸㠳㥡〰㜸㠹敡づ㕤㈷㠳㡡愹㈸㐲搴㘳っ搲ㄳ愵ㄲ愲㥥㠰戶㜳愲敡攰㐶㝥捣㈷ㄹ㐴ㄳㄵ㠴㔶㌷㤹㑡㘷㔰㍤〵㡣昹㌴㠱㑣㙥昱〱㍣㐳挰戳〴㙣〹㠰㄰昵㐷㤴㕣㠳㉡㔱㘱㔰㍤てㄸ戸㘲摡㡢㡥敢ㅡ㔴㉦㌰敥㡢㡣扢㌳〰㕥慥晡㐳搷挹㑣挵慣ㄵ攱敡㘵〶㘱晡㑡〹㔷㝦㠲戶㜳慥〶挱㑤戸㝡㤵㐱㌴㔷捣㜳搱㑤挶愲收敡㌵㘰捣戵〴㌲〷挶〷昰㍡〱㙦㄰戰〷〰挲搵㥦㔱㉡づ㉡晥挰摣㘷㔰晤ㄵㄸ㄰㌵搴ㄵ搴㐵搴㥢っ晡㌷〶㘵ち㡢㤷㈸收慤㜴㌲愸㤸搵㈲㐴扤捤㈰㑣㙦㈹㈱敡㕤㘸㍢㈷㡡㘹㌰㐲搴㍡〶搱㐴㌱ㄷ㐶昳㐰愵㌳愸晥づ㡣昹ㅥ㠱晢晡〳摥㈷攰〳〲㐶〲㈰㐴晤〳愵㡥㐱ㄵ慦㜴㜱敢㐳挰挰ㄵ㌳㘸㜴挵㉥慥㍥㘲摣㡦ㄹ㤷搹㉥㕥慥㤸攲㘲㜳㔵昱㜴㘶〶㈰挲搵愷っ㌲ㄳ愵ㄲ慥㍥㠷戶㜳慥㘶挱㑤戸㕡捦㈰㥡㉢愶捤攸㈶扢戸晡〲ㄸ昳㑢〲㤹㔲攳〳昸ㄷ〱㕦ㄱ挰㉣ㅢ攱敡㙢㤴㡡㕣攱㠷晢ㄵ㌶挰㙦〱〳㔷㑣戴搱㜱㕤㕣㝤挷戸摦㌳㉥㤳㘲扣㕣㌱ㄳ愶ㄳ慥㉣㐰㠴慢ㅦㄹ㠴〹㌳㈵㕣晤〴㙤攷㕣㌱戱㐶戸摡挰㈰㥡慢〶㘸㜵㤳㕤㕣㔵㘱㠶㌷㜹㝤㕤㌱昳挶〷㠰㉢慢戸㥡㑤〰㤳㜱㠴㉢晣㈲搶挵㔵挵㍤愰〱ㄸ戸㙡㜱挵㜵㜱搵㡤㜱㙢ㄹ㤷戹㌳㕥慥㤸㌰搳挹㘴挵㜴ㅡ攱㉡挰㈰捣慢㈹攱慡〷戴㥤㜳㜵㉣摣㠴慢㥥っ愲戹㘲〲㡥愶〲㡢㝡ㅢ散〵㡣㔹㐷攰〹晥㠰㈰〱㕢㄰挰㝣ㅤ攱㙡㑢㤴㍡㈶㉢晦㍤攰搶挰㠰㈸收散攸㕡㕤㐴昵㘶搰㙤ㄸ昴ㅣ〰扣㐴㌱愹愶㤳㐱㜵㉥㈰㐲搴㜶っ挲摣㥢ㄲ愲戶㠷戶㜳愲㤸愳㈳㐴昵㘵㄰㑤ㄴㄳ㜵㜴㤳愹㜴㈶慢ㅤ㠰㌱㜷㈴㤰㐹㍣㍥㠰㥤〸搸㤹〰收昵〸㔱晤㔰㜲㙤㠰㤵㑥㤳〷〰〶慥㤸摥愳攳扡戸摡㠵㜱〷㌲敥㌵〰㜸戹㘲晥㑤㈷㕣㌱㍢㐷戸摡㤵㐱㔶愳㔴挲搵敥搰㜶捥ㄵ搳㜹㠴慢㍤ㄸ㐴㜳挵㥣ㅥ摤㘴ㄷ㔷㝢〲㘳づ㈶㤰昹㍥㍥㠰㈱〴っ㈵㠰㈹㐰挲搵㌰㤴㕣㕣㔵㍡〴つ〱〶慥㙥㜷挵㜵㜱ㄵ㘶摣〸攳㌲㘳挷换ㄵ搳㜴㍡搹〰ㅦ〴㐴戸㡡㌱挸㐳㈸㤵㜰㤵㠰戶㜳慥ㅥ㠶㥢㜰㤵㘴㄰捤ㄵ搳㝥㌴ㄵ㔸搴攳㉡〵㡣㤹㈶㤰㈹㐱㍥㠰攱〴散㑤挰攳〰〸㔷晢愰攴摡〰㝤㉦㈹散ぢっ㠸㝡摡ㄵ搴㐵搴㐸〶ㅤ挵愰㉦〳攰㈵㡡愹㍣㌶㔱ㄵ㡦搵㤹攸㈳㐴㡤㘱㄰㘶晣㤴㄰㌵づ摡捥㠹㘲㘶㤰㄰㌵㥥㐱㌴㔱㑣て搲㍣㐰て愲攴㑥捥〴㉣㥢ㄳ〹㘴敡㤰て㘰ㄲ〱㤳〹㘰㌶㤱㄰㌵〵愵㈲㔱攳晣て慢愶〲〳愲摥㜲〵㜵㕤㝢㤹挶愰搳ㄹ㤴搹㍦㕥愲㤸昲㘳ㄳ㔵昱〴㤰〹㐱㐲搴㑣〶㘱㘶㔰〹㔱戳愰敤㥣㈸㘶㄰〹㔱戳ㄹ㐴ㄳ昵ㄹ戴㥡〷㉡㥤㤹㙡づ㌰收㕣〲㤹㘲攴〳㤸㐷挰〱〴㌰敢㐸㠸㍡㄰愵攲搶㠷攷㤰㔴㌸㔴㌸ㄸ㌰㜰挵攴㈳ㅤ搷㌵愸㝥挱戸㠷㌰敥〶〰愴扤㠷戲攴戴户愶ㅡ晢㙥敦㕤搴戲㍢摣㔲㐳㠱昷扡㘷户㉦㙦㐴㝥〱ㄷ㜹㔷搵㕥攲晤攱㠰攸㜰慦户愵ㄵ㌷慥扡㝡㥦慡㔰昴㝤〱ㄵ㜷摦摡昳挴ち㜱愳愵㡡〷ㅥ㔷晤㔰晥㔴㠶愲㍦ㅢ摥昱昳㜵昱㠱挶愸㐷ㄳ户㥥搶㤰㙢㙤㘹㙢㈹戴昷㥢㡤摣㤹㝥㝣〲㐸愱慡㉡㌴扡㘶ㄵ㈲晡搶挹ㄵ敢摡捣挷㑤㉥攱㉦攲〳ぢ㥢㕢㤶㌶㑢㙢㙡摡昸㈰ㄴ攱慢㕢㌷㔶ㄳ挰㔷㍥扢㠰扣㘰ㄷ㌴㤴捥㘶〶戲㘷㤷㘰㔷攷㄰挸挸愲㍣㘸散㤸戱戳敡㜳㠵㔴㈲ㅤ捦攴㐲㠹㜴㈶㤶㡥㘶搲昱㐴㈲ㄲ㡢㐵㤳戱㘴㍡ㅣ户㈲挱ㅡ挷挷捣挱㈷㘸攸㔲㥥愵㙥扡㐴㕢㑤〰愵㑤扤攷っ㍣づぢ㜱㉤㍣慦慣慥摤扡愹㐱㥥〷㜵㤴摤慢㉥㍥改挰㌰戸㡤搵㕣〲戲㌶捤愹戴㉦攸㡣㜶攲扡㌵㥡㘰㉥㠰〸〴扢㐳挱〶ㄹつ㤰扤挶㡥愹㜷愵摣ㄸ㐷㐰搷〳㍡戹ㄷ㡦〷㠹戶ㄹぢ愱搹〲㥡搲〷㠳ㅡ㡤㔰㙦〹㌵㝥扥慦㝦搰捦挱ㄷ散攱㐴㌷晢戳摡〱ㄴ㉤㠰㥡敢戰愴㝡挱㈸摤㜷㈴㔴㕣㤰㙦㄰㕡づ㜹昵㙢慣㈵〷ㅡっ㔵㐶ㅢ㈰ㄵ㐷㡦㍡ぢ㌰㡥愰搲ㄱ戰〵愲挰つ㤷㥥㈱㌱〲戶㜴捡挶ㄲ㤴敤ㄱ㄰づ㘷㤳㠹㐲㍣㤲㉦㘴昲㌱㉢ㅣ捡㘴愲愱㜰㈱㥦ち攷愰㑥挵戳挶搲㈲㌴㥢㉤㘴挳改㐴㌶㤴㡣㐷㘳改㘴㍡ㅢ㑥㘵昳昱㑣ㄲ㘳愸㤰㠹愶㌲挶戲㈲㌴㥡㑤愵㌲搹㐴㈶㤶捣攵㘳㤱㘸㍥ㄳ㑥㘷㜲攱㝣㈱㤱㑢㘶〱捤ㅡ换㡢搰㜸㉡㕡㐸㐴搳昹㔰㍥㤵㡡㠵搲挹㤴ㄵ㑦收㘳攱㐸挶㡡愵戳ㄸ㠹挱慤昴㑡ㅣ〵ㅦ昳㘸㡡㘳㈸㝥〹ㄱ摣㕡ㅢ㡦愵敡㌸㡡攳㈹㑥愰戱户㌶ち㕥摣改㈴㌱搴㜶㌰㜲捣慡愳㐰ㅢ挷㤳㜴挴㘹戴晦ち㈲㄰散攳㜸ㅢ愷愳攸搳攳㘷㐰敤搳攳挶㤹搰㤷づ㤹戳愰昱っ慣攰昶扡㙤㘷挳㈸愳㐱㥥㍤㉡㑦㈱㔵㍢戰㕤散户ㄵ㌰ㄶ挷挵㑥搰捡戸㘸㐶㙢㡢攳㘲㈵㈰㤵挷㐵㈳愰攵攳㘲㘷㕤昹昹㜰挶戸攸挷挸ㅣ㘴ㄷ愰㙣㡦ぢ换㡡攵挳搹㜰㌴ㅦ㡦㠶㘳搹㜴㉣ㅢ㑢㘶愲㠵㘴㌲ㄷ捡㕢戹㔴㌸㘵㕣㔸㠴愲摦昲㠵㙣〱摦㔸㉡㔶㠸㐴搲昹㔴㌴ㅢ㡢㐷㔳㠹㜸㍥㤶捤㘷㠳捣〴㘰㜸昳㈲昸㤸ㄷ㐳〴〷㘸搵㈵㔴㕤㑡搵㉥㕡㐵㠰㐰搵慥㔰㐹ㅦ㘵㥤㍥㐲ㄹㄷ㜳㘹㕦〵ㄱ〸敥〶〵ㄶ昰㙣㌷㐸て挵挶㔵搰㤵㜶挴搵搰昸昴攴敦愰昶改挹攰敥㑥昴㡥㐷戶㥡搷〱㙡㙦扢㝢挲㈸㝤戴ㅡ慡㘲ㅦつ㠱㔶晡㘸㥥扢㡦㙥〴愴㜲ㅦ捤昱敤愳愱扡昲㥢攱㡣㍥ㅡ收搴㘷摣㠲戲摤㐷挹㍣㤹捦㘳㐳㠹㕢戱㕣㉣㥥㡤㔸㜹㉢㤵㠷捣挶㐲攱㘸㍡㈸㐹〴愴散㔶昸〴㐳扡挵户戱ㄴ搶㈵摡㔴っ㈵㘱㝡扡挳戴㐱户㌵㌰㤹㜷㐰〴㠲㜱〰戰㠰ㅢ㝡搴㜱㕡㌴㌹ㄳ㥡㥣昷㠲〹㙤攴㜳㈴攴㤹戲收晤㌴慥㐳㔱愵㘰ㄴ愲ㅥ㠰慡㐸搴㜰㘸㠵愸㌱㉥愲㑣敥㈲戹㌷㔴愳㝣㌹搹㕢搷昳㌰㜰攰㘴ㅦ㈷戴昱〸捡捥ㅥ㉤㤷㠸㘴ㄳ攱㘸㉥㤲㑢挷㌲愱㘴㌶ㄹ㑥㐶搲搱㔰㈱㥢换㕢㤹㔴㍥㈸挹〲㙣收愳昰〹敥慢ㅢ㈷㝢戴㤱扡㐴㥢ㅡ㠳㤲㜰㌲摣攱〴㘵㕣昵㠴挹㝣ち㈲㄰ㅣぢ〵ㄶ晣㌹ㄹ愷㡤㈳㠸搸㤷攲〵扡慥挳㤲㥡〰愳㜰昲ㄲ㔴㐵㑥㈶㐱㉢㥣っ㜳㜳挲つ㕣㌸ㄹ攲换挹㘴㕤捦慢挰㠱㤳㈹っ〲〷攳㌵㤴㥤㜱ㄲ㡦愵㜲戹㘴㌸㤵㉡挴㘳搹㜰㍥㡢㠷〵㘷愳㠹㐴㉣ㄳ换挷ㄲ㜹换㔸㕢㠴㘶㘲㤱㕣㍥㥣挸㘵搳攱㑣㉣ㅢ挵戴㥤〹㠵㈲愱㑣㈲ㄲ捦㠶攲搱㑣㜰㍦㈷扣昹㍡㝣捣㌷㈰㠲㔳戵慡㘳㕢㥥愶㔵〴〸㔴捤㠴㑡搸ㅣ攰㘶昳㉤摡摦㠶〸〴昷〷〰ぢ㔵㈶户㘵㤳ㅢ慦挹敤搵攴搶ㄹ㥣愵㡤攳㠸ㄸ㑦昱〱㡤敢戰愴收挰㈸㙣晥ㄳ慡㈲㥢昳愰ㄵ㌶户㜱戳挹㑤㔱搸摣摡㤷㑤㘶〸㄰㘱㝥〲〹㌶て㜴㐲ㅢ㥦愲慣㘷挶㜸㌶㘱㐵挲昱㜴㌸ㄵ换收ち㤹㘴㈴ㄲ㑤㈷挳㤹㝣㈱㥤挹㐷㘳挱㠳㜴㜳㍥㠳㑦昰㘰㕤㤲慤敥ㄷ扡㐴㥢㍡っ㈵攱愴㤷挳㠹㙣㜵㕦挲㘴晥ぢ㈲㄰慣〷〰ぢ晥㈳散㜰㙤摣㡦〸㍥㙥挲晣㠱慥敢戰愴戲㌰ち㈷晦㠶慡挸㐹ㅥ㕡攱愴摡捤㐹㜱慢慢昲攵挴搲昵愸ㅡ攱愴攰㠴㌶慡㔱戶㌹㐹㐴㐲攱㔴㈴㥥㡣挷ㄳ改㔸㉡ㅡ㑢㘱㘶ち挵ㄳ㠵㜴挱挲㈰ぢ㈷㠳昳㜵㜳扡挰㈷戸㐰㤷㘴慢㙢搰㈵摡㔴㈳㑡挲挹昷摦摢晢㘵㤴㤱㑤〹㤳㔹ぢㄱ〸㌶㐱㔱㤱㤳㘶㙤㥣㐵慦搹ㄴ㜵㜴㕤㐷㑥ㄶ挱㈸㥣㙣挱㡡愸攱户ㄵ㕡攱攴㔳㔴㜸ㄵㄸ㠰ㄲ㜷昵㔹〵㘷愲㡦愱㉤摦㠳戶改㝡㝡㈳ㄴ挶㐹扢㔳㌶戶㐱搹收㈴㠴〳慡㘴㍣㥤捤愵㈳改㔸㉣㥥捦㈴㜲攱㕣㈴㤴㡡㈴ㄲ攱㕣扥㄰㌲戶㉤㐲㔳㠹㐸㉥㥢㡣挷㘲挹㜰㈲㠶㕤㘶㉡㙤攵㌱㘹㐵昳戱㐲〸㍢搱戰戱㕤ㄱ㥡戵ち搹㐸㍣捣㐳㜴㑣昲㠹㔸㉡㤱挷㙥㈰㕥挰㜶㥣捥收㘳㜹愳㑦ㄱㅡ㠹㔸搹㝣㉥㡤挳慢㔴㍡ㄶ㠹攴㔲戹㙣㍣㥣㉤㘰ㄶ挴挶ㅣ捤愶㠳㡢昵㑡㙣てㅦ戳㉦挵づㄴ㍢㐲〴㤷㘸愳摦㤱ㄵ㌳ㄵ愴て㝣㍣搵㔱㌰㑡て晥搹改㐱攱㝣㌷㐶摥ㅤ㈲㄰㍣㕡㝢昳挸捡攴㜱㤴挹㠳㈶㤳挷㐹挱㘳戴㜱㈸ㅤ搶戱㉦昸っつ昳㈰〸㜵㉣㡣ㄲ㉤っ㘳戱〷㡦㠷㔶㝡昰㜹㜷てㄶ攷捤㍦晡昶攰〹扡㥥㌸㐲愱〷㑦㘴㄰搴㘱㈴㔰㜶㐶戵㤵捡㐵搰〳㤱〸㜶愸戱戰㤵づ㈷㐳㤱㔴㈶㡣㕤㑡㈱㤱捣㘴㡤㘴ㄱ㙡㠵㉤ㅣ摥收愳攱㐴㈱ㄷ㡢收㤲㤹㔴㉣㤳㡢㕡㘹㙣ち愹㜰㍥㙤〵㑦㜲挲㥢㈹昸㤸㘹㠸攰挹㕡搵㌱㙦㥥愲㔵㐵㤴晡ㄵ㔴挲收㈳づ㥢㈸㈳愳㡤㔱㐶㐱〴㠲愷㐳〱攲晣攷捤㌳戴昱㜰㈲㌲ㄴㄳ改扡づ㑢敡㉣ㄸ㠵捤挹㔰ㄵ搹晣㌵戴挲收㕤扥㙣摥攱换㈶㔳ㄶ愴ㄱ搳㄰ち㙣晥㠶㐱㔰㠷㌱ㅤ㘵㥢捤っ㐶ㅤ愶捡〸㈶㠴㜴㉣㡡㜳捤㐸〶㥢〶昶㉤戱㜰㉥ㅢ㡡ㄵ㡣ㄹ㐵㘸㌴㔲㠸㐴戳攱㑣㤲愷愵攱㙣㍥㔳〸㘵慤㐴㌶ㄵ捤㐷ㄳ攱㐲㌸ㅢ㕣攱㠴㌷㘷挲挷摣ㅦ㈲㜸慥㔶㜵戰戹㔲慢〸㄰愸扡〰㉡㘱昳〶㌷㥢〷搰㝥㈰㐴㈰挸っ㠷㡡㙣㕥愴㡤昳㐹㈴ㅦ攴㘱搶搳㜵ㅤ搹扣〴㐶㘱㌳〳㔵㤱捤换愰ㄵ㌶㉦昷㘵昳㌲㕦㌶㤹搷㈰㡤戰㄰ち㙣㕥捥㈰㘴戳㠰戲捤㘶㍣ㅣ㑡攵㌲攱㝣㈴㙡攵挱㘶㈴㥢捤㈴攳㤹㐴㉣ㄹ㑡㠶㜲戹㔸捣㤸㕦㠴㐶ㄲ㤸㡢慤㑣㉣ㄴ㡢挶㘲㠹㔸㍡㤵㠹㐷ぢ搱㌸㠷㘵㈸ㄵ捦ㄵ㠲㔷㌸攱捤〵昰㌱ㅢ㈰㠲慢戴慡㠳捤㉢戵㡡〰㠱慡摦㐱㈵㙣㥥敢㘶戳㠵昶㐵㄰㠱攰㌵〰㔴㘴昳㕡㙤攴て㘳攴挱攷收㔲扡慥㈳㥢搷挳㈸㙣㉥㠷慡挸收つ搰ち㥢愷扡搹㉣敥扦㑥昶㘵昳㐶㕤捦㉦ㄱち㙣摥攴㠴㌶㡥㐵搹搹搲㔳㠵㉣㑥㔵昳㌹㡣戹㔸㉣ㅦ捡ㄴ攲挹㐴㈶㤱挲㍢㔷搲㤹㜴㈸ㄷ扣㔹㌷攷㌸昸〴㙦搱㈵搹㝦㐹㑡〴㔷㠱㌶㜵㍢㙣挲挹戱㙥㑥㑥㠲挹㍣ㄹ㈲㄰㕣〳㠰㜰攲㜷㈴㝤㠷㌶㉥㘶㐰㍥㈰挴㍣㤳慥敢挸挹㕤㌰ち㈷㘷戳㈲㙡昸扤〷㕡攱愴搵捤㐹㜱晦戵挸㤷㤳㝢㜵㍤㉢㄰ち㥣摣攷㤴㡤㜳㔱戶㌹㠹㠶㌱扥㜲㠵㄰㜶攱㌸扢戰挰〹挶㔶㉡㔲戰昰㐴搸㙣㌲㤴㌲㔶ㄶ愱戹㔸ちㄷ〷㌲戸㕥㠰ㄳ㤱㑣㈲㤳㑡㘵攳戹㔸扡㤰挷慥て㠷㥢㈹攳扣㈲㌴㥢て㠵ㄲ㄰搹㈸㌶㝣散ㄱ搳搹〴收㠱㕣愱㠰戳ㄶㅣ戶㕢挶昹㐵㈸㡥㍥ㄳ搸捤攵㐲㌹散扦ㄲ戱㜸㍡㤷㑣㕡〵捥〱㠵㔰㉣㥥㠸〷㤹㠰㈱㑣㕥〰ㅦ昳㐲㡡㡢㈸㉥㠶〸晥㐱ㅢ晤昶㕦捣捣攸昰㈴摥昶㘴っ昵㝦㌰㑡てㅥ收昴愰㜰㝥㌵㐱扦㠳〸〴ㅦ搶摥㝥晢慦㐷戴㜱㌵ㅤ搶戱〷㝦㐹挱㠷愶愸挷㘰㤴㘸㌷戳㈲㙡昸㝤〲㕡改挱㔹敥ㅥ㉣㡥敡㤹扥㍤昸愴慥攷昷〸㠵ㅥ㝣捡〹㙤摣㡥戲摤㠳昹㜸〲㝢㌰慢㄰ぢ㈷挲㌱㡣攸㔴〲〷昳㠹㘸㈶ㄲ㡡攰㡣㈰㤴ち㍥慤㥢戳〶㍥挱㘷㜴㐹㐶昵戳扡㐴㥢㝡ㅥ㈵攱㘴㡡挳〹捡㔵收摤㌰㤹昷㐰〴㠲捣户愸㌸慡㕦搴挶㤳攸㜵㌲挵㐳㜴㕤挷戵㝦ㄹ㐶攱攴㘱㔶㐴つ扦㝦㠲㔶㌸搹搷捤㐹㜱㥦扥㡦㉦㈷慦挲㐹ㅡ昱㌸㐲㠱㤳搷ㄸ〴搱㡣㈷㔰戶㌹戱ㄲ㤱㘴㉡㡥㙦㌲㠷㡢ㄵ㔶㉥㥤挳㤱㔰㍣㙤挵ぢ㔶㌴㤲㐹愶㡣㈷㡢搰㜴㍥㤶换愴㌲ㄱ㥣ㄳ㘱愸㘲摥挴㑥㍥㙤㜱㤷ㄴ挵挵㤱㐴㉡挸㕣つ㠶㌷㥦㠲㡦昹㌴㐴昰㜵慤敡㤸㌷摦搰㉡〲〴慡晥ち㤵戰ㄹ㜱戳昹〲敤㉦㐲〴㠲㑣捡㤰ㄵ昱㍢ㄷ晡㥢㌶㥥挱扡捦愴㔸㑢搷㜵㔸㔲㙦挳㈸㙣扥〱㔵㤱捤㜷愱ㄵ㌶㜷㜵戳㔹ㅣ㘱〳㝤搹㕣愷敢㜹ㄳ愱挰收摦㥤搰挶摦㔰戶搹㑣㐶愲㈱㡣慤㝣〶㘷㤵㌸散挹昳㠴ㅢ㠷慤戸散ㄳ㑤ㄷ戲㠹㜴昰㍤摤㥣户攰ㄳ㝣㕦㤷㘴㠴㝤愰㑢戴愹て㔱ㄲ㑥㜶㜲㜳戲づ㈶昳敦㄰㠱攰㐷〰㔴ㅣ㘱ㅦ㙢㈳ㅦ挸㈲慦㍦㌰㍦愲敢㍡㜲昲㈹㡣挲挹㈷慣㠸ㅡ㝥㍦㠷㔶㌸搹搲捤㐹昱晣㌰攸换挹㝡㕤捦㝡㠴〲㈷㕦㌸愱㡤㉦㔰㜶㐶㔸搶捡㘵搲㌱扣慤㉢㡣换愴戱〸㠸〸攳㐲㙡㈴㡤ぢㄲ挹㘴㈲ㅢ晣㔲㌷攷㑢昸〴晦愵㑢㜲㝥昸㤵㉥搱愶扥㐵㐹㌸〹㌸㥣挸昹攱㌷㌰㤹摦㐲〴㠲摦〱㔰㤱㤳敦戵㤱捦㘸㤱㔷㌱㤸ㅢ攸扡㡥㙢晦㈳㡣挲〹㕦㉣㔴攴攴㈷㘸㠵㤳㥦扥㜳㥤ぢㄵ㌹昹ㄱ摡昲㜳愱つ扡㥥ㅡ㠴〲㈷㙣ㄱ㈳ㅡ〶捡捥㑣㤴捤攲㠶〲づ㠷挳㌸换㠹愴㔲愹㝣挲捡㘱慢戳慣㑣㈱㥤っ挵㠳捡昱㌱扢挱㈷㔸慤㑢挲㐹ㄷ㕤愲㑤㌱㤳㐲㌸昹ㅡ㡤攱㜵㕢㈸昱戳㌳㐸戳〷㐴㈰搸つ〰晣昹㥦㌳搷㙡攳ㄵ㐴慣愲搸㡡慥挲㐹〰㐶攱愴㌷㔴㐵㑥㝡㐰㉢㥣㝣攸收愴㌸ㄳ晤挳㤷㤳㥥扡㥥㍥〸〵㑥㝡㌱〸㙡㌳戶㐷搹攱〴愷〸㠵㘸〸搷扡㌳ㄸ㈷㠹㌴㉥㥢挶慣㜴㈲㥦㡢攷搳搸愱㐶㡤扥㐵㈸敥搰攰愲㑤㈲ㅣ㉦攴㌱て㜱㉦㥣〹愵㜱改㉦㥤㑥挶㈳搸㝦〶敢㥣昰收づ昰㌱㜷㠴〸〶戵慡㘳㈶摡㐲慢㡡㈸戵㌵㔴挲收摦ㅣ㌶搱㤷昸㘵ㄶ愳っ㠴〸〴㝢〳㠰㍦晦戳㡢㙤戴昱㕡㈲昸捣ㄶ㜳㌰㕤㠵捤敤㘰ㄴ㌶㠷㐲㔵㘴㜳㝢㘸㠵捤㤷摤㙣ㄶ㐷搸㡢扥㙣昶搵昵㠴ㄱち㙣敥攰㠴㌶㈲㈸摢㙣挶㜳㠹㘴搸挲㤹㔹㌸ㅢ挱〱㕣〲㐷㈸戹㔸㌶㥢㑢㘴戳愰㌹㥤〸敥愸㥢ㄳ㠵㑦㜰㈷㕤㤲ㄱ戶戳㉥搱愶〶愰㈴㥣㍣攳㜰〲㈵慥㙡㐲㥡㈹㠸㐰㜰ㄷ〰昰攷㍦挲〶㙡㈳ㅦ〵㈳㉦攲㌰㐷搲㔵㌸㤱㑣ち敡㐷㐳㔵攴㘴㜷戸〸㈷て晡㜲昲〷㕦㑥昶搰昵㡣㐷㈸㜰戲㈷捡㡣㘸㑣㐰搹收〴搷ㅥ攲㔶ㄸ搷ち㜲ㄹ㥣㜳㈵愳愹㤴ㄵ挹㘴㈳攱〸㐸戱愲攱㑣㜰戰攳㘳㑥㠴㑦㜰㠸㉥〹㈷㐳㜵㠹㌶ㄵ㐲㐹㌸戹换捤挹㝥㌰㤹㔳㈱〲挱㌰〰昸昳攷㠴㤹ㄵ㘲扣㠳㠸㍢㈹㘶搳㔵㌸㠹挱㈲攳㘴㉥㉢㠲㑤扥〹㘸㠵㤳ㅢ摣㥣ㄴ户扡敢㝤㌹㐹敡㝡づ㐲㈸㜰㤲㘲㄰㐴㌴づ㐶搹收愴㠰挳搱㘴搶㑡攳昲㐹㌲ㄶ挶㜹㘵㉥㥣㐸挵㜰捤㌳ㅦづㄵ㘲㤹戴昱㡢㈲㌴㥤戵戲㜸敤㘲㈶㡥㉢㉣㌱㕣㘶捦攲戲㑤㌲㤶㑦挷㜸换ち㐷っ挱戴ㄳ摥㍣〴㍥收愱㄰挱攱㕡搵戱搵敤慤㔵〴〸㔴敤ぢ㤵戰㜹戹挳愶㙣㜵㌹摡昳㄰㠱攰㐸〰昰攷扦搵㡤搲挶攲慢㑦捣㠵㜴ㄵ㌶挷挰㈸㙣㌶㐱㔵㘴㜳ㅣ戴挲收戹㙥㌶㡢攷〸扦昱㘵㤳挹ㄵ昸慢㌲㡦㐴㈸戰挹㐴ち㤶㡤㔶㤴㙤㌶㘳㌹ㅣ㤱㜳〶㡢ㄵ愲㌱㙣㝤搹㌰㉥㤵㘰晦㡦㠳昹㜸ㄴ㜳㥢搱㔶㠴攲挸㈰ㄲ挷ㄱ㍣㙥㉢攲㙡ㄸて戹昲㠹㈴㑥㔴㔳愹㈸慦换ㄷ㡣昶㈲ㄴ㜷ㄵ昳㘱㕣㙢挱搵攷㐸㉣㤱㡥愶ち㌹摣㘶㑣攵㜰㥢愳挰昳〷㘳㜱ㄱ㥡挸挵㘳搱㜸ㄲ㈷ㄹ戸㐴ㄳ捤挴搳搸慦攰㕣㈲㡦愹㈰㠵㡢つ昹攰㐴扤ㄲ㑢攰㘳㉥愵㔸㐶戱ㅣ㈲㌸㐹ㅢ晤捥ㄱ㈶㙢愳㜸ㄲ㙦㝢㌲㠶㥡ち愳昴攰戱㑥てち攷㈷ㄱ㜴㌲㐴㈰㌸㑤㝢晢㥤㈳㌰㉦〴㝦㔵收改㜴㘰扦㤹㡦㔲㍣〲愱㘶挲㈲搱捥㘶㐵搴昰换㝣て改挱㔶㜷てㄶ㡦攰ㄶ昹昶攰㙣㕤捦ち㠴㐲て捥㜱㐲ㅢ攷愲㙣昷㘰㉡㤹挷攵㉡㉢ㄹ㉤㐴戰㍦捡㔸㘹ㅣ挲挵㐳ㄱ㉢㡥ㅢ挱㌸愸ぢ〷攷敡收慣㠴㑦㜰㥥㉥挹ㄱ摣〱扡㐴㥢㍡ㄸ㈵攱攴〸㠷ㄳㄹ搵ㄷ挲㘴㕥〴ㄱ〸晥〲〰晣昹捦ㄱ捣晦㄰㈳ㅦ㥢㈳㉦户㌱慦愰㉢搹〹ㅥ慡㡤㔷㐲搵戳㑢㑤〶攵扤㍤㐹〳晥て捤ㄸ散㝤㌱捡㜸扣攸㘴㌹㈷㠵㉥㜸㕡㠰晤ㅢ晢慥搵挳晦戳㔸㑣㑢攰㈳㌶昸慤㌹っ㙢晤㕦挴㘱㉦㜷㈴㡤㌰㈲㌳晦捤慢戱挲㌵㌹慣㙥挸慦㠹ㅢ㝢㘵㈸ㅣ慢㝡㌷㑤㙥㐳搶〲㕥㍤㍢愷㘵㜴昱扤愵㕢攸㙣㠶挱晡㝤ㅤ㠳㍡㌴愳戳㙤㜸㍣㑢扢愵摤㘶戴ㄶ晤昰晥ぢ㈴愰挰㌰㤸㙦昷攸摤㔱㜲㍤愳愰㙦㠷㜶㜲㜳ㅢ摥㐴㘳攵㜵挴㌶晣㕥扦㙢㜵ㄷ攵晢搸㄰攷つ愵㝣㈸〱愳攱㕤㌴㤳昳㈴愰慦捦ㄳㅡ挶㌴戴换ㄳ㑥㜶㠰㕤㤹㔹㤰㘳㕣㠳戵㌵㐶っㅣ㍦㌰㥣慣㌹ㄸㅤ戱挹㜵㤴搲捥ㅡ㌹㌶〲收㜵〸愸㌸挸ㄹ㡤慡扡昹㈸攰昰戹㡡扣扡㍥㥦㡦㜴ち愳散晦㙢㥤晦㠳愳敡ㄶ㘸㡦㐳㔵晦㜳㐷搷扣㝤㥣㠳挴昳㈲敥搹改㤴㡦ㅥㅥㄹ㔸㝢昵愲ㄱ㠱扢㐷戲戴晦㍤户㡣㔴㉤昰ㄸ〴㤴昹づ挵扢ㄴㅣ晦㙡㉥ㅡ昱㘷㍣㐸愰散ㅤて㜳ㅣ㠳昷ㅤて挱㈳ㄱ〹㝦昸㐵て摡摢戳㡢㕡㡣〲户ㅡ㌵ぢㅥㅣ慡㕣㔵昳㔶慥攵㔱㔰㜳㠴㈹㜳〹愴昱㝢攸㐰攵㠴㠱攱㤰㥡づ愰㈶㈰㘰慥㈱晡攸㈲㝡㈹搱㜷扡搰㔳ㅣ㌴㈲㠳挱扢㠹㘶收㠵ㅤ㝢ㄹ搱昷摡攸㠹㡣㍤挱㐱㐳て昴晤㐴晦戲㠸㕥㑥昴〳㉥昴ㄸ〷捤晥ち㤸てㄱ捤㐹㥢㡤㘳〰㜵㥣㔳㘰㔷愹攳㥤〲挱敡〴愷㠰攵慡扡搳㔰搸扣㑥晣㤵昶㜰㜷攲昱㌳戶ㅣ捤㜸㠷慦㥢㈰晦扢换敡㙣㜸昸㜵攲〸戴搵户ㄳ昷㜱っ摥㜷㔴〴㔷㈰ㄲ晥慡捣挷戱扥攸挴昳㔱㤰㑥ㅣづ㡦㘲㈷㍥㐹㌲㉥㠲挹㈶晡〲㉣ㄹ㑦ㄷ愹㡢慢〴挰攴㠹搳㌱ㅥ晤㐵昴挵㐵昴㠵㐴㍦㘷愳戱昵挴㔵挴㐱摢㥢挱ぢ㐴昳㔸㐶㡦〲㜵愹㔳㘰戴扡㉢㔰搸㍣㍡㔷㘹て㌷㥤〸㔵㜵挵晡ㅢ昶ㅥ昴摢㕢㡦㡢捡攷㤵㤱㤷㕣捣捦搳㈳搵㜵昰昰愳㜳㈸ㅡ敡㑢攷㄰挷攰㝤换㐵㜰㌵㈲攱て㑦㐵挳㕡㠱捥㥢㔱㄰㍡昷㠴㐷㤱捥戵㕣攵㕢㘱戲改㘴扡㠵昱㐶㤱愰㠴摡戵㠴愰扦㄰捤〳㘶㑤㔰摤ㅡ㍡愰ㄶ㝥㕤㥦捡昳㠴つ摡㝡㔴摤ㅤ摡㔳㜳昳攳敡昵㉦㑦换ㅥ晦搰㑤㍢ㅣ㥣摦晢慤㙦㐶〶て㑣摦昱搴㤲攷㐷㍥晡搵敥㠷㥣昳挸攳挵㤹㐷摤て㑦㍦㡥晡㔷攲愸㥦㘳昰扥〸㈳昸〰㈲攱て㌳㄰摡て㡥ㅥ㐶㐱㌸摡挹捤搱㍡慥昵愳㌰搹ㅣ㍤㠲㈵攳㍤攸㥣㈹㔸㙤㕦挲搱〷戰搴㍤〹捣收つ㤵愷戴㠷愶㐳戳㔹㜱晡㝣〱ㅥ㝥㌴昴慥㐴挳搶㡥挱晢㍡㡣攰㑢㠸㠴㍦攴〱搸㌴扣㡡㠲搰戰愵㥢㠶捦㐸挳敢㌰搹㌴扣㠶㈵㘳扤㑤〳愶戸戸敡攵搰㘰㙦㜹㕦ㄲ捤㠴〸ㅢ扤㤶攸慦㙣戴㙣㜹〱〷㙤㙦㜹摦挰㔲昷ㄶ㌰㥢㐷摡摢摡挳㑢㕡挵敤敢〳㜸昸㤱㔶攳㜰㔳戶捦改敡ㄸ扣慦捥〸晥ㄳ㤱昰㔷㘵晥ㅢ㙤挷搸昹〴〵㈱慤ㅡㅥ挵敤㡢ㄷ㙣搴㘷㌰搹㌴㌰戱挲攰㕢愵敤戱㤳㔰㍦㝤敢摥攷㜴㠱愵敥㑢㘲㄰㤸㕦搷㘷ㄳ㌶愹㝦㘹㑦㑤挷㈶㙦㔲㍦挰搳㡦㤶敦搰㍣摦㘹攷㕢挷攰㝤㤹㐶昰摦㠸㠴㍦㍣㉤ㅣ敢〲㕡ㄴ㝡㔴㘸昹ㅡㅥ㐵㕡扡挳愸㤸〱㘱搳挲摣ち愳㘷㤱㤶愴晡愲㠴㤶㍡搲搲つㄸ晣㙤㍡㉤㜵捣愰㄰て㑤㠷㘶戳攲㈶挵散㠹㐱㙣晣㍢ㄴㅤ㐷㈴㥦㔴愲攱㘳挷攰㝤愵㐶㜰ぢ㐴ㄲㅡ㝡摢㌴㌰㜳㐲㘸昸搰㑤挳戶愴㠱㔹〵㌶つ㑣愷㌰晡搸㌴挸㔱挳晢づつ㡣ㄴ㌰晢ㄲ捤挴〵ㅢ扤㉤搱㍢摡㘸㌹㝥㜹搷㐱摢㥢搴捥㐴㌳挳挱㐶㙦㐷㜴㝦㔷散扦㌹㘸ㅥ㌶攰㡤㘲㐴㌳ㄵ挲㐶昷㈱㝡㤰㉢昶㥦ㅤ㌴挰㐰敦〶㑢摤㙥挰攰㙦㌳㍡㠴〹ㄱ攲攱敥㄰昷搱〴愳扢换㙡㈸攰㠳愰昴㜶挸慢㘸㡥敦戸晣㤳㘳昰扥摥㈳ㄸ㐶㈴改㤰愱㘸㍢挶㈵ㄳ㈱愴㐳㕥㠶㐷㜱㕣敥㐵ㅡ㔲㌰搹㌴㌰㍢挲〸摢㌴挸慣昵扣㐳㠳㑤㜱㤴攸㜴ㄱ㥤㈴㍡㙥愳㘵㐶㝣挶㐱摢㌳㘲ㄲ㤶扡㤱挰攰㙦㌳㐸ㅢ愵㍤摣愴㤱愸㡡㜳摣㐴㜸っ昲㈱敤㜱㠷㥢戲㌹敥㌱挷㤰昶扣ち㈴㌸ㄹ㤱㠴戴ㄱ㘸㍢㐸㥢㠶戲㤰昶〸㍣㡡愴㡤㈴つ捣㑤戰㐹㘳ㄲ㠴㌱摡㐵挳㠳㈵㌴㡣㈵㝡晦㈲㥡㜹㄰挶㜸ㅢ㉤ㄴ摦攷愰㙤㡡㈷挲㔲㜷〰㌰昸摢っ搲づ搴ㅥ㥢㑣㕡㍤㍣〶昹㤰㜶愷挳㑤ㄹ㘹㜷㌸〶敦㙢㐳㠲ㄹ㐴ㄲ搲愶愱敤㈰㡤㘹つ㐲摡敤昰㈸㤲㌶㠳㌴㌰〵挱㈶㡤戹づ挶晥㌶つ㌲㜶㙥㜱㘸戰挷捥㙣愲ㅢ㡡攸昹㐴捦戵搱㐲摡つづ摡㈶敤〰㔸敡㤸㤸㠰扦捤㈰㡤㔹っ攲戱挹愴㉤〵㝣㤰て㘹搷㌸摣㤴㤱昶㍢挷攰㝤捤㐸㜰㌹㈲〹㘹㠷愲敤㈰㡤搹ぢ㐲摡㔵昰㈸㤲㔶㑦ㅡ㡥㠳挹㈶㡤㈹つ㐶愶㐸㐳㔲㕤㕥㐲㐳㡥㌴㌰ㄷ〱㝦㥢㐱〳ㄳㄷ挴挳㑢㐳挵摤〶㤳ㄶ〶昹搰㜰㜱㈵ㅡ㉥㜲っ摥㤷㡤〴捦㐶㈴愱愱挱愶㘱〵捡㐲挳〵㙥ㅡㄶ㤲〶愶〱搸㌴㌰㡢挱㘸戲㘹㤰摤挶戹づつ㡣ㄴ㌰㕢㠸扥戰㠸㕥㐹昴㤱㌶㕡㜶ㅢ扦㜶搰〰〳摤㐶昴㐵㐵㌴㜳ㄹ㡣挵慥搸㘷㌸㘸㝢户戱㤴攸㡢㡢㘸愶㌳ㄸ换㕤戱㑦㜵搰昶戸㍣ㅡ㤶㍡愶ㄶ攰㙦㌳㍡㠴㜹〸攲攱敥㄰昷㙥㠲㉤㜷㤷搵㙡挰〷㐱改摤㙤㥣㠰收昸敥㌶㡥㜷っ摥㤷㥦〴㙦㐶㈴改㤰ㄳ搰㜶㡣换摦愳㉣ㅤ㜲㉣㍣㡡攳昲㈴搲挰搴〱扢㐳㤸㤴㘰㥣㘲搳㠰捤㌳愹㡥㉡愱攱㌴搲㜰㌷㌰昸摢っㅡ敥搱ㅥ㙥ㅡ戸敡ㄵ挷攵㐳昰ㄸ攴㐳挳攲㑡㌴戴㍢〶敦㉢㔰㠲て㈳㤲搰㜰戶㑤〳㔳づ㠴㠶㔶㌷つ攷㤰〶愶〷搸㌴㌰て挱㔸㘱搳㈰㜳㕡戳㐳㠳㍤愷慤㈴㥡㘹〲㌶晡㐹愲捦户搱㌲愷ㅤ攱愰敤戱㜳㈱㉣㜵㑣ㅡ挰摦㘶㤰挶っ〳昱昰㤲㔶㜱敦戹ㄶ昰㐱㍥愴㔹づ㌷㘵㜳㕡摥㌱㜸㕦㤷ㄲ㝣〳㤱㠴戴摦愲敤ㄸ㍢捣㉣㄰搲戲昰㈸㡥㥤㉢㐸挳㕢㌰搹㌴㌰摤挰戸戲㐸㐳㔲ㅤ㔶㐲挳搵愴㠱㜹〲昸摢っㅡ㤸㔴㈰ㅥ㕥ㅡ㉡㡥ㅤ㈶ㄴっ昲愱攱愰㑡㌴ㅣ攸ㄸ扣㉦㑤〹㝥㠲㐸㐲挳㙡㥢㠶昵㈸ぢつ昳摣㌴摣㐸ㅡ㤸〷㘰搳挰っ〳攳收㈲つ〹㌵慢㠴㠶㕢㐹挳㌷挴㙣づつ挰攲㠳㙢て摦㙡㑦㑤挷㈶㥦㈸㙤㠰攷㈰〴昱捥㉣搳㉡搱㌲搵㌱㜸㕦愳ㄲ㘴㉡㠲搰㜲愷㑤㑢つ捡㐲换ㄴ㌷㉤㜷㤳㤶㙥㌰搹戴㌰挹挰戸搷㐵换㠴ㄲ㕡敥㈷㉤摤㠹㐱ㄳ昹㜵㝤㌶攱晣㤱㈹〵攲戹搹戴㙣〵㌷㍦㕡㐶㔷愲㘵㤴㘳昰扥㔸㈵搸ㅢ㤱㠴㤶㠷㙤㕡晡愰㉣戴散敢愶攵㔱搲挲ㅢ晢㌶㉤捣㌳㌰ㅥ㉦搲ㄲ㔷挳㑢㘸㜹㤲攸ㅤ㡢㘸愶ㅡㄸ㑦摢㘸㤹㤷ㄲづ摡㥥㤷㥥㠵愵㙥ㄷ㘰搰搵㥢㑥㘲ㅤ㌳〸挴㐳㤳愷戹慦㌸搳っ㠶㠷ㅦ㘹㘱㠷㥢戲㤹㈶攴ㄸ扣㉦㘲〹づ㐵㈴㈱敤㈵戴ㅤ㌳㑤ㄸ㘵㈱㙤ㄸ㍣㡡㌳捤㉢愴㈱ち㤳㑤ㅡ搳〹㡣㔷㙤ㅡ㌰攱㈶搴㥥づつ昶㠴扢㤶㌴㈴㠹搹ㅣㅡ散㤵挶㈶挶攴〱昱搴㜴㙣昲㈶挶〴〲㍦㕡〶㔵愲㘵愰㘳昰扥㥥㈵挸扣〳愱攵㑤㥢㤶昱㈸ぢ㉤〳摣戴扣㐵㕡㈶挲㘴搳挲㡣〲攳ㅤㄷ㉤㍢㤵搰戲㡥戴散㐷捣㝦㐴ぢ昳〷挴㜳戳㘹㤹つ㌷㍦㕡晡㔴愲㘵㍢挷攰㝤㘱㑢㜰㉥㈲〹㉤晦戴㘹㌹〸㘵愱㘵ㅢ㌷㉤ㅦ㤱ㄶ摥敢户㘹㘱㔲㠱昱㠹㑤㡢㙣㌴㕢㍡戴搸ㅢ捤㘷㐴昳㥥扦㡤㘶㕥㠱戱摥㐶换捥扣㤷㠳戶挷搶㤷戰搴攵㠰㤱つ㐶㙦㈸昶晦㤵攷愹㍡愶ぢ㠸㠷㈶㑦㝢㔶摣挴ㄶ挲挳㡦㌴搳攱愶㙣ㄳ慢㜵っ摥ㄷ扣〴㥢㄰㐹㐸晢づ㙤挷㈶㜶㈴捡㐲㥡〱㡦攲㈶昶〳㘹攰㉤㜴㥢〶收づㄸ晦戶㘹㤰㈳昳㙡㠷〶㐶ち㤸ㅢ㠸㕥㕡㐴户ㄱ慤㙡㈱㥣ㅢ㔲㍦㝤㘳㕦ㅣ攴㙡〶捣㉥戰㈸摥捥户㘳㌳㠳挰愸戱搱ㄲ晢㝢〷㙤ㅦ㤹㜷㈳㝡㜹ㄱ扤㤸㘸搳ㄵ晢㙢〷㙤㜷㐸㜷㔸敡㑥〲㘶昳㍡㠴㜷晦换㍡挴㝤㈴捥㤶扢换㡡㌹〰㝥ㅤ戲ㅥ捤昱㍤㌲晦摣㌱㜸㕦㌸ㄳ㍣ㅢ㤱愴㐳戶㐰摢搱㈱㉢㔰㤶づ昹ㄴㅥ挵づ搹㡡㌴慣㠴挹㈶㡤愹〰㐶㙦㥢〶㌹㌲晦戰㠴㠶㙤㐹挳㠵挰㙣ㅥつ扣攱㕦㐶〳㔷扤攲搱ㄵ㙦昶晢搱昰㕥㈵ㅡ晥敥ㄸ捡㕥㍢挳ㅣ㠱捥㕥㍢挳攷㉥㔸㙤昲㙡㤴㍡戴慡愶挰ㅦ敢㜷㉦搸㙡摥搶挷戳㈲ㅡㅡㅢ攵㌱ぢ㍤昰㤶㠸搶㠵㔶敢㔴扣っ〵敦㠶㤸摤搰攴晣昶ㅦ㉦㐹攱㐳昷昵㝢〸㑣㈹搱搹㈸捣㘸挵㡢〹扡ㄵ㈶户攱㈵㌶昹摡愶㤹㤹昶㜶慢戵昹㝦攱ㄵㄲ㜸昰㐵㔷㡥㜰㈴㐰攰㔲㜴㔵戵敦㌳㈷昸㌰〹摦㕢攸挲搸戰づ㍥愶攲昵㈶捣㔵愸收换㈵晥戳昷搹ㄸ㍢㘲㠸改㠷搹攷㕤慦㑢改慡摥㐵ㄷ摢昹愶挷㔷㙤㘰㤳㜹㜷摥摣㤹㠳戵ㅦ㐴ㄷ㍣㙣㐱戲㘳㈰〲㘶㝦㘸攴昱㜷㈲慡㙡慥挶㌰昰慥ㅣ㥦〲㌲㠱㙢㕦戳戴㈱摦扥挰㔸㘰㌵捣㕦搰㡥愷㝤㜴搷㑦改㘰ㅤ㕤慦㠳敢挶ㄲて㌸挱㜷㙢慡捦戴戶㘶㤶搷㌶搵㌷㕡捤昳摢ㄷ搴搶㉦㐱㥥〵㕥昳㠲㈹慣戶戶搶摣〵敤㘱㔵㥣㝣搴捤㠸挸㜱㘹っ㠴戶昸摥㠳搲戵晤㡢敦摡敥ち〷㘳㌷㠸搲戵摤ㅤㅡ搷摡㉡摥挹攷ㅡ敢㡦㕡㠳〲搷挳摣ㄳ挸㘲㍢敥搶摡挱㡥㤶㜸挵㥢敦㠲ㅤ攲挶昲㈶扢㘸㠷扡戵扣ㄵ㉤㙢㌲っ㕡晦㙥㝢挹㜷㐵㐲挰ㅢ㘱㠸搲ㄵ㠹㐰攳㕥㤱㈷ㄱ扦㘴㐵㥥搵捤㠸〱㔹㕣ㄱ摥㤸㤶挶挵摤摡㔷㜵攳ㄲ搰ㄶ㥦昱㕦㑡昳搳扥慤㑢戱ㄹㅣ㔴ㅤ〳㙡㌸㔵㝣㥥愲㍤愰搴㕡㙦换㜸敦㔷摡戰て㤰挵㤶扤攳戴挱攴戸敥慡ㅥ昱慤㙥㈴㘳㤷㔶㌷摡㔳摤㍡㙦㜵ㅦ攸敡挶扡慢晢㐴㔷挷晥攸慡敥昷慤㙥〲㘳㤳晢㡥戵㥢㐴㤵㙢敤㜸㉦戳㠴昷㉦㜵㜵㔳㠰㉣慥摤㌷㕡扢㥦㕢换ㅢ㝥ㅣㄴ㈶㜹敦慡搶昸㌶㘲㍡㙢㉣㕤攷㤹㔴戹ㅡ挱㝢㠳㈵㡤攸㠲㡤㐹㈸㥥攵慥捥㠴㔶慡戳㈹扥挹户扡戹攵搵ㅤ攰愹慥㍢攲㤴㔴㔷愷慢㍢挸㕤㕤㙦㕤ㅤ㌷摥慥敡ㅡ摦敡づ㘱㙣㙥愷ㅤㄴㅦ㐶㤵㙢敤戶昵㔶挷摢㔷戲㜶㠷〳㔹愴㜸㘷慤捤戸戵扢㘸㙤搶慤攵㙤㈷㠹㤰㜳戴愸扦㑡つ㠵㔶昸戱挷挴愵扥つ㉥挰挳㌳㈶ㄶ㔰攵㙡昰㕥㠸㔳挲㑦㔴㔷㜷㠴扢ㄱ㐹慤㕤攸搶㡥㈸㙤挴㑡摦㐶㌴㤷㌷㘲㤱愷ㄱ㈳扤㡤ㄸ慢慢㙢㜵㔷挷摢㈲挲㐴㥢㕢㍢慤戴ㄱ㘷晡㌶㘲㐹㜹㈳㤶㜹ㅡ㌱挳摢㠸搹扡扡愳摣搵ㅤ愰戵㐷扢戵㠷敡㐶搸挳昵㈴摦㐶ㅣ换ㅡ㑢户㡥攳㍤㡤愸昷㌶㈲愷慢㍢搱㕤㕤㠳慥捥ㅥ慥挷昸㔶㜷ち㘳㤷づ搷搳㍣搵㉤昴㔶搷愲慢㍢摤㕤㕤㥢搶㥥攱㘸㘵〸㉥搵摡㌳摤㔸㕥敥㤶㑥㍡换慤攵㠵㘴搷收摣敡摢攰㜳攰攱攱㘷〵㔵慥攱㝡ㄲ攲㤴っ㔷㕥㔶㤶敡㔶扡慢㍢㕢㔷㘷㙦ㅤぢ㝤慢扢㠰戱㑢㘷捣㡢㍣搵㥤攳慤㙥愵慥敥ㄲ㜷㜵ㄷ㙡敤愵㙥敤㙦㜵㈳散㌱㤱昳㙤挴攵慣戱㜴㑣慣昲㌴攲ち㙦㈳慥搶搵㕤攵慥㙥戵慥捥㥥愰て昱慤敥㥡昲敡慥昳㔴㜷愳户扡㕢㜵㜵慢摤搵昱〲㥥㙢㝦㌰搷户扡㥢捡慢扢挵㔳摤摤摥敡㜸㌹㑦㝡昴㌶㜷㜵扣㌰收㥡敦愶晢㔶户㠶戱㑢㝢昴㑥㑦㜵㡦㝡慢攳㘵㌲愹敥㙥㜷㜵捦㙡敤㍤㙥㉤㉦㌴戹搶㜹㠲㙦㈳敥㘷㡤愵㍤晡㠰愷ㄱ慦㜸ㅢ戱㔶㔷昷㤰扢扡㌷㑢慢ㅢ改㕢摤㈳攵搵㍤收愹敥㉤㙦㜵敢㜴㜵㑦戸慢攳㠵ㄱㄷ挵㈹摦敡㥥㘶散㔲㡡㥦昵㔴昷㤱户扡捦㜴㜵捦戹慢晢㔲㙢㥦㜷㙢㜹愱㐱ㅡ㘱捦㙣㈱摦㐶扣挴ㅡ㑢㘷戶㔷㍣㡤攰㌵㠹㤲㠹㘲㠳慥敥㔵㜷㜵扣扣㈰扤晦㥡愳㤵㤹慤㥢搶慥㜵㘳扢㙢敤敢㙥敤ㄶ㈸㐸㠳敤慤㝣㔷摦〶晦〵㈰捦㤸㜸㤳㉡搷捣戶ㄵ捡㈵つ收㘹戹㌴敤㉤㉣攸㈳㠷ㅡ㥥ㄹ㙤昲㘹ㅢ捦㑢戶挲〹㙥愳㤵攳换㈹挷攰ㄵ㠷㠳ㅢ㜱晡戵〹㙦㤴㝣ㅢ昵㈸㥥㙦㌱㠶昹㡥戳挰㐲ㅤ捦㝡戸㔰㑢愱㜸昲挲㐶㤹敦㔲捤㜳ㄶ昱㔸攷㉣㠸〷捦㑦㡡ㅥ㜵㠳㜵〹敥㔵㜵㍣ㅦ改戰昱㍣愴㔸㔲㍣㥦㤰搸㝦愷㥡愷ㄱ戴㤹敦㌹ぢ㉣搴昱㤴愱攸㔱挷㔳㠵㘲㐹愵㔰ㄲ晦昷愹收挱扥昸㝦攰㉣㠸㍦て散㍢㍣㐶愲㈴ㅥ晦愰㥡挷敢攲昱㑦㘷㐱㍣挶㍡〵㝢晤㈷愰㈴ㅥㅦ㔲捤㐳㙥昱昸挸㔹㄰㡦㈹㑥㐱㍣敡昶㜳㤷搴㜴㤴挴晦㘳慡㜹戴㉣晥㥦㌸ぢ攲捦㈳㘳㉥搸㌵昲愸㔷㍣㍥愵㥡〷扣攲昱㤹戳㈰ㅥ㍣戸敤昰攰㠱慢㜸㝣㑥㌵㡦㔹挵㘳扤戳㈰ㅥ㠷㍢〵扢㡤㍣㉥㉤晡搷㘵㑢㑡㌹㕤㐲㡢昰搴㙥㤴㈴昶ㄷ㔴昳昰㔲㘲㝦改㉣㐸散㈳㥣㠲ㅤ㝢愱扢愴㥡㔱ㄲ晦㝦㔱扤挸戱㤹㕦㌹ぢ攲捦愳挰㡥搶戴戹㑢㡡㐷㜶攲晦㌵搵换ㅣ㥢昹㡤戳㈰晥㍣㠰敢昰攷㠱㕢戱愴㜸㔰㈶晥摦㔲㝤扣㘳㌳扦㜳ㄶ挴晦㐴愷㘰昳捦攳㉡昱昸㥥敡搳ㅣ㥢昹㠳戳㈰ㅥ㍣㝣㉡搶㔱㜷㠶㉥㤱戱扡㌳㜵㐹㤰㍣㑣㉡㈲ㄵて㠱㈴昶㡦㔴慦㜰㙣收扦㥤〵昱㔸改ㄴ散搶㕣㠰㤲㜸晣㐴昵㐵㡥捤摣攰㉣㠸〷て㔶㡡㜵搴㕤敡㉥㈹ㅥ㠰㠸㝦ㄵ㕥㔲愹㔶㌹㌶㔳戱挴晥㘵㡢慦㉡昱攰㌱㠴㜸㔴ㄳ㜳㥤昶攸攲昶攰愱㐲戱㐶挵挳〰昱攸㑡捣㉤摡愳挶敤㜱㕢㠹挷ㅡ敤㘱㄰㜳愷昶攸收昶戸摢敤㔱㜷㡦扢愴敥搷晥戵昴攰晥㤷慤㌱㑤户晦㐳㈵ㅥ㡦㘸㡦〰㌱摣㠵㡡㐷㜷户挷ㄳ㈵ㅥ摣ㄵ捡㕡昵㈰收㔹敤搱搳敤挱㍤㕥㤱㠷扡攷摤㈵挵扤㤸昸昷愲挷㉢摡扦捥敤晦慡摢愳㡥㍢㈹㠹㠶㜵愹慡㕢慢㑢㔴搵扤敥㉥愹扦愰㈴戱㠳㡣挶㝤㡤慣捤ㄶ敥搸㙦㤵㜸挸㠴㑦㡥戶〴㐶㝦㠲㥣昸攵㝡昳㔶搰攲㝡昳扢㍡搲搶㙥ㄴ㈷㝢㐱昵戶㔱㌲㕤㌳搶㌶㙥ㄴ愷㙤㐱㙤㙢愳㘴㔲㈶慡愴㐶㑥捥㠲敡㘳愳㘴㈲㉥㐳㜱㐲ㄶ㔴㕦ㅢ㈵㤳㙦㔹㡤ㅦ㘹搴㡥㌶㑡愶搸戲㔸㥣㙡㈵搶捥㌶㑡愶搵㌲ㄴ愷㔷㐱昵户㔱㌲㤵ㄲ㔵挲〴愷㔴㐱敤㘲愳㘴㔲㉣㙢搷㤷ㅡ㌵挸㐶挹搴㔷㠶攲ㄴ㈸戱㜶戳㔱㌲挱㤵愱㌸搱〹㙡てㅢ㈵搳ㄸ㔱㈵慣㜲㍡ㄳ搴㘰ㅢ㈵㔳ㄷ㔱㈵慤攷ㄴ㈶愸愱㌶㑡㈶愱戲㔸㥣㡣〴戵㤷㡤㤲㠹愷慣㕤ㅢ㌴㉡㙣愳㘴㝡㈹㡢挵㘹㐶㘲㐵㙤㤴㑣㈹㘵㈸㑥㉤㠲㡡摢㈸㤹㐶捡㔰㥣㑥〴㤵戴㔱㌲㜵㤴戵㡢㔳㠸愰搲㌶㑡㈶㠸戲㔸㥣㈸〴戵户㡤㤲㐹愱っ挵挹㐱㔰㈳㙣㤴㑣〴㘵㌵㜲㐲㄰搴㐸ㅢ㈵㥢㍢㔱㈵摣㜳戳ㄷ搴㘸ㅢ㈵ㅢ㙥㔹㡤摣㠰〵㌵㔶㔰㐱摤挹㡡摢愷摣〸晡挳搷昶㡤愰㌱昰挵ㅥ㈲愸㉢㔱摣㌶〵㜱扦〷愱㌷㔲挵敤㔲㄰昷㤵㈲ㄴ㌷㐵㌱摣敢㌱㜰敢ㄳ挳㍤ㅥ〳㌷㌸㌱摣敤㌱㜰ㅢㄳ挳㕤ㅥ〳㌷㉢㌱摣改㌱㜰㑢ㄲ挳ㅤㅥ〳㌷ㅥ㌱慣昱ㄸ戸扤㠸攱㜶㡦㠱㥢㠸ㄸ㝥敦㌱㜰慢㄰挳㙤ㅥ〳㌷〴㌱摣敡㌱㜰散㡢攱ㄶ㡦㠱挳㕤っ㌷㝢っㅣ攱㘲戸挹㘳攰愰ㄶ挳㡤ㅥ〳挷戱ㄸ㙥昰ㄸ㌸㜴挵戰摡㘳攰㘸ㄵ挳昵ㅥ〳〷愸ㄸ慥昳ㄸ㌸㈶挵㜰慤挷挰㘱㈸㠶㙢㍣〶㡥㍣㌱晣慥搴搰晤晦〱昹㍥㙢㤲
B58: Decisioneering:7.0.0.0

Sheet User's Guide
B5: Georgia II: Industry-Led Skills and Workforce Development Project Assessment
B10: Last updated: 12/16/2014
B11: PROJECT NAME | C11: Education Sector Project
C12: Industry-Led Skills and Workforce Development Project Assessment
B13: SPREADSHEET VERSION | C13: Compact Signing
B14: AMOUNT OF MCC FUNDS | C14: $16 million for total project
C15: $12 million for Competitive Program Improvement Grants
C16: $4 million for Strengthening Sector Policy and Provider Practice
B17: PROJECT DESCRIPTION | C17: MCC funded grants will enable a "change agenda" to dramatically change the face of the way TVET institutions operate in Georgia by focusing on industry demand and student outcomes.
B18: BENEFIT STREAMS INCLUDED IN ERR | C18: The ERR models potential benefit streams that come from 2-year, level 4 and 5 TVET programs focusing on producing science and engineering technicians or other occupations which show high proof of demand in Georgia. The benefits are increased income of graduates and lower levels of unemployment of those graduates compared to if they went to currently existing level 1-3 TVET offerings.
B19: COSTS INCLUDED IN ERR (OTHER THAN COSTS BOURNE BY MCC) | C19: Co-financing from the private sector, tuition
B20: ESTIMATED ERR AND TIMELINE | C20: 14% over 30 years*
C21: *Note: This is the official ERR calculated using a Monte Carlo simulation, and thus may not match the ERR calculated within this workbook.
B23: Table of Contents
B24: Activity Description
B25: One should read this sheet first, as it offers a summary of the project, a list of components, and states the economic rationale for the project.
B27: ERR & Sensitivity Analysis
B28: This worksheet highlights key assumptions and summarizes how the ERR may change due to varying costs and benefits.
B30: Cost-Benefit Summary
B31: A brief summary of the project's key parameters and ERR calculations.
B33: Cohorts
B34: Outlines the grant selection process, models grants chosen, and illustrates the flow of students through funded programs
B36: Earnings
B37: Incremental returns to society through higher graduate earnings and higher employment
B39: Sensitivity Analysis

Sheet Activity Description
B1: Georgia II: Industry-Led Skills and Workforce Development Project Assessment
B5: Last updated: 12/16/2014
B6: SUMMARY
B8: The Project will facilitate a change agenda in the TVET sphere that is supported by government. Those policy reforms cleared the way for TVET providers to begin offering higher level coursework and outlined a plan for incorporating better support and feedback from industry. However, many TVET provides currently lack the financial resources and institutional capacity to establish new programs, particularly at higher levels and in the STEM areas. At the national policy level, MCC, in consultation with other donors, has identified several areas where further sector strengthening could provide substantial systemic returns. At the program delivery level, the GoG and MCC consulted with a wide range of private companies in Georgia whose management noted the need for better educated employees, particularly skilled mid-level technicians.
B12: COMPONENTS
B14: Specifically, MCC Funding will support:
B16: 1. | C16: The provision of $12M in grants to support a competitive grant-making process for TVET institutions to develop industry-demanded programs that are currently lacking
B17: 2. | C17: Support to other best practice adoption by TVET institutions
B18: 3. | C18: Building capacity of Ministry of Education actors in better supporting the provision of a labor force with skills as demanded by an active private sector.
B20: ECONOMIC RATIONALE
B22: The Industry-Led Skills and Workforce Development Project aims to reorient the technical vocational sector to be demand driven and responsive to local industry needs. A more efficient and effective educational system will ultimately increase employment opportunities for subsequent graduates, ensuring both more relevant skills for trainees and a higher-quality workforce for industry, which will save industry money in the long term by subsituting for expensive imported workers and services, or their own training programs. Aside from the individual students that attend programs supported by direct grants and capacity building, all students in the vocational system will benefit from the capacity building program and the support and institutionalization of international best practices such as ensuring curriculums become more responsive to market and employer demands, as well as work to specifically track and support graduates on an ongoing basis. Under reasonable assumptions, as supported by the Call for Ideas exercise in 2012, the ERR for the project is estimated to be around 14 percent (with an 80% confidence interval of 6-22 percent). It is projected that approximately 7,000 additional vocational training graduates over a 30 year period will receive higher income due to the improved training opportunities, with total beneficiaries of approximately 25,000. No direct benefits are estimated from the ministry capacity building or best practice grant projects, although it is expected that those projects will help a wider number of students in the long term.

Sheet ERR & Sensitivity Analysis
B2: Georgia II: Industry-led Skills and Workforce Development Project
B4: ERR and sensitivity analysis | G4: Last updated: 12/16/2014
B6: Change the "User Input" cells in the table below to see the effect on the compact's Economic Rate of Return (ERR) and net benefits (see chart below). To reset all values to the default MCC estimates, click the "Reset Parameters" button at right. Be sure to reset all summary parameters to their original values ("MCC Estimate" values) before changing specific parameters.
B8: Parameter type | C8: Description of key parameters | D8: Parameter values | I8: All summary para- meters set to initial values?
D9: User Input | E9: MCC Estimate | F9: Plausible Range | G9: Values used in ERR computation
B10: Summary | C10: Actual costs as a percentage of estimated costs | D10: 1 | E10: 1 | F10: 80 - 120% | G10: =D10 -> 1 | I10: =IF(D10=E10,IF(D11=E11,"Y","N"),"N") -> Y
B11: Summary | C11: Actual benefits as a percentage of estimated benefits | D11: 1 | E11: 1 | F11: 80 - 120% | G11: =D11 -> 1
B13: Specific | C13: Current average base wage for graduates of technical vocational training in Georgia in 2010 (lari/month) | D13: 319 | E13: 319 | F13: 319 - 1120 | G13: =IF($I$10="Y",IF(D13>0,D13,1),E13) -> 319 | I13: All specific parameters set to initial values?
B14: Specific | C14: Increase in vocational education graduates' wages due to the project | D14: 0.238 | E14: 0.238 | F14: 0 - 150% | G14: =IF($I$10="Y",IF(D14>0,D14,1),E14) -> 0.238 | I14: =IF(D13=E13,IF(D14=E14,IF(D15=E15, IF(D16=E16, IF(D17=E17, "Y","N"),"N"),"N"),"N"), "N") -> Y
B15: Specific | C15: Increase in employment of vocational educations graduates due to the project | D15: 0.09 | E15: 0.09 | F15: 0 - 15% | G15: =IF($I$10="Y",D15,E15) -> 0.09
B16: Specific | C16: Average cohort size | D16: 40 | E16: 40 | F16: 10 - 100 | G16: =IF($I$10="Y",D16,E16) -> 40 | I16: More Info
B17: Specific | C17: Lari-Dollar exchange rate | D17: 1.6 | E17: 1.6 | F17: 1.4 - 2.2 | G17: =IF($I$10="Y",D17,E17) -> 1.6 | I17: Project Description
I18: User's Guide
C20: User Generated ERR*: | D20: ='Costs & Benefits Summary'!C34 -> 0.1070142603
C22: MCC Estimated ERRs**: | D22: Original (12/16/2014)
D23: 0.14
C25: Present Value (PV) of Benefits (USD) for Officially Reported ERR: | D25: 59760522
C27: Present Value (PV) of MCC Costs (USD) for Officially Reported ERR: | D27: 41581420
C29: * This is the base case scenario ERR and the only ERR linked to other spreadsheets. It is an illustrative point estimate using mean values of these parameters.
B30: **This is the officially reported ERR, which was calculated using a Monte Carlo simulation. The charts below detail the probability distributions of the official ERR under different circumstances.

Sheet Costs & Benefits Summary
J1: Last updated: 12/16/2014
B2: Georgia II: Industry-led Skills and Workforce Development Project
B3: Costs & Benefits Summary
B5: =IF('ERR & Sensitivity Analysis'!I10="N","NOTE: Current calculations are based on USER INPUT and are not the original MCC estimates.",IF('ERR & Sensitivity Analysis'!I14="N", "NOTE: Current calculations are based on USER INPUT and are not the original MCC estimates.","")) -> 
A6: Notes | B6: Assumptions
A7: 1 | B7: Tuition cost | C7: 1741.159802
B8: Inflation rate | C8: 0.02230453929
C10: 2013 | D10: =C10+1 -> 2014 | E10: =D10+1 -> 2015 | F10: 2016 | G10: 2017 | H10: 2018 | I10: 2019 | J10: 2020 | K10: 2021 | L10: 2022 | M10: 2023 | N10: 2024 | O10: 2025 | P10: 2026 | Q10: 2027 | R10: 2028 | S10: 2029 | T10: 2030 | U10: 2031 | V10: 2032 | W10: 2033 | X10: =W10+1 -> 2034 | Y10: 2035 | Z10: 2036 | AA10: 2037 | AB10: 2038 | AC10: 2039 | AD10: 2040 | AE10: 2041 | AF10: 2042 | AG10: 2043 | AH10: 2044 | AI10: 2045 | AJ10: 2046 | AK10: 2047 | AL10: 2048 | AM10: 2049 | AN10: 2050 | AO10: 2051 | AP10: 2052 | AQ10: 2053 | AR10: 2054 | AS10: 2055 | AT10: 2056 | AU10: 2057
B11: Benefits | C11: 1 | D11: 2 | E11: 3 | F11: 4 | G11: 5 | H11: 6 | I11: 7 | J11: 8 | K11: 9 | L11: 10 | M11: 11 | N11: 12 | O11: 13 | P11: 14 | Q11: 15 | R11: 16 | S11: 17 | T11: 18 | U11: 19 | V11: 20 | W11: =V11+1 -> 21 | X11: =W11+1 -> 22 | Y11: 23 | Z11: 24 | AA11: 25 | AB11: 26 | AC11: 27 | AD11: 28 | AE11: 29 | AF11: 30 | AG11: 31 | AH11: 32 | AI11: 33 | AJ11: 34 | AK11: 35 | AL11: 36 | AM11: 37 | AN11: 38 | AO11: 39 | AP11: 40 | AQ11: 41 | AR11: 42 | AS11: 43 | AT11: 44 | AU11: 45
B12: With Project Earnings: | C12: =Earnings!D669 -> 0 | D12: =Earnings!E669 -> 0 | E12: =Earnings!F669 -> 0 | F12: =Earnings!G669 -> 590014.7309 | G12: =Earnings!H669 -> 1550766.17 | H12: =Earnings!I669 -> 2838445 | I12: =Earnings!J669 -> 4246678.217 | J12: =Earnings!K669 -> 5784096.882 | K12: =Earnings!L669 -> 7459884.067 | L12: =Earnings!M669 -> 9283808.028 | M12: =Earnings!N669 -> 11266257.28 | N12: =Earnings!O669 -> 13418277.7 | O12: =Earnings!P669 -> 15751611.76 | P12: =Earnings!Q669 -> 18278740.04 | Q12: =Earnings!R669 -> 21059013.51 | R12: =Earnings!S669 -> 24034996.77 | S12: =Earnings!T669 -> 27179023.51 | T12: =Earnings!U669 -> 30603168.59 | U12: =Earnings!V669 -> 34315525.9 | V12: =Earnings!W669 -> 38314701.97 | W12: =Earnings!X669 -> 42619723.64 | X12: =Earnings!Y669 -> 47239069.06 | Y12: =Earnings!Z669 -> 50773650.87 | Z12: =Earnings!AA669 -> 52258489.17 | AA12: =Earnings!AB669 -> 51810659.84 | AB12: =Earnings!AC669 -> 51198189.71 | AC12: =Earnings!AD669 -> 50406244.9 | AD12: =Earnings!AE669 -> 49418943.86 | AE12: =Earnings!AF669 -> 48219290.91 | AF12: =Earnings!AG669 -> 46789105.66 | AG12: =Earnings!AH669 -> 45108948.34 | AH12: =Earnings!AI669 -> 43158040.57 | AI12: =Earnings!AJ669 -> 40914181.52 | AJ12: =Earnings!AK669 -> 38353659.01 | AK12: =Earnings!AL669 -> 35451155.44 | AL12: =Earnings!AM669 -> 32179648.02 | AM12: =Earnings!AN669 -> 28510303.3 | AN12: =Earnings!AO669 -> 24412365.32 | AO12: =Earnings!AP669 -> 19853037.26 | AP12: =Earnings!AQ669 -> 14797356.21 | AQ12: =Earnings!AR669 -> 9236723.584 | AR12: =Earnings!AS669 -> 3075494.11 | AS12: =Earnings!AT669 -> 0 | AT12: =Earnings!AU669 -> 0 | AU12: =Earnings!AV569 -> 0
B13: Counterfactual earnings: | C13: =Earnings!D43 -> 0 | D13: =Earnings!E43 -> 0 | E13: =Earnings!F43 -> 0 | F13: =Earnings!G43 -> 402311.4181 | G13: =Earnings!H43 -> 1193445.081 | H13: =Earnings!I43 -> 2059925.237 | I13: =Earnings!J43 -> 3007178.062 | J13: =Earnings!K43 -> 4040977.801 | K13: =Earnings!L43 -> 5167467.723 | L13: =Earnings!M43 -> 6393182.277 | M13: =Earnings!N43 -> 7725070.536 | N13: =Earnings!O43 -> 9170520.984 | O13: =Earnings!P43 -> 10737387.74 | P13: =Earnings!Q43 -> 12434018.26 | Q13: =Earnings!R43 -> 14269282.69 | R13: =Earnings!S43 -> 16252604.82 | S13: =Earnings!T43 -> 18393994.89 | T13: =Earnings!U43 -> 20704084.2 | U13: =Earnings!V43 -> 23194161.72 | V13: =Earnings!W43 -> 25876212.86 | W13: =Earnings!X43 -> 28762960.29 | X13: =Earnings!Y43 -> 31860265.2 | Y13: =Earnings!Z43 -> 33396257.67 | Z13: =Earnings!AA43 -> 33974654.79 | AA13: =Earnings!AB43 -> 33633616.81 | AB13: =Earnings!AC43 -> 33180730.78 | AC13: =Earnings!AD43 -> 32606004.91 | AD13: =Earnings!AE43 -> 31898743.94 | AE13: =Earnings!AF43 -> 31047504.56 | AF13: =Earnings!AG43 -> 30040048.12 | AG13: =Earnings!AH43 -> 28863290.57 | AH13: =Earnings!AI43 -> 27503249.35 | AI13: =Earnings!AJ43 -> 25944987.21 | AJ13: =Earnings!AK43 -> 24172552.62 | AK13: =Earnings!AL43 -> 22168916.72 | AL13: =Earnings!AM43 -> 19915906.5 | AM13: =Earnings!AN43 -> 17394134.04 | AN13: =Earnings!AO43 -> 14582921.67 | AO13: =Earnings!AP43 -> 11460222.6 | AP13: =Earnings!AQ43 -> 8020372.362 | AQ13: =Earnings!AR43 -> 4203518.401 | AR13: =Earnings!AS43 -> 0 | AS13: =Earnings!AT43 -> 0 | AT13: =Earnings!AU43 -> 0 | AU13: =Earnings!AV43 -> 0
B14: INCREMENTAL EARNINGS | C14: =C12-C13 -> 0 | D14: =D12-D13 -> 0 | E14: 0 | F14: 187703.3128 | G14: 357321.0889 | H14: 778519.7623 | I14: 1239500.155 | J14: 1743119.08 | K14: 2292416.344 | L14: 2890625.75 | M14: 3541186.743 | N14: 4247756.713 | O14: 5014224.026 | P14: 5844721.783 | Q14: 6789730.821 | R14: 7782391.947 | S14: 8785028.612 | T14: 9899084.396 | U14: 11121364.18 | V14: 12438489.11 | W14: 13856763.35 | X14: =X12-X13 -> 15378803.86 | Y14: =Y12-Y13 -> 17377393.2 | Z14: =Z12-Z13 -> 18283834.38 | AA14: =AA12-AA13 -> 18177043.03 | AB14: =AB12-AB13 -> 18017458.93 | AC14: 17800239.98 | AD14: 17520199.92 | AE14: 17171786.35 | AF14: 16749057.54 | AG14: 16245657.77 | AH14: 15654791.22 | AI14: 14969194.31 | AJ14: 14181106.39 | AK14: 13282238.71 | AL14: 12263741.53 | AM14: 11116169.26 | AN14: 9829443.644 | AO14: 8392814.66 | AP14: 6776983.847 | AQ14: 5033205.183 | AR14: 3075494.11 | AS14: 0 | AT14: 0 | AU14: 0
B16: Costs
B17: Capital fund TVET 4-5 program grants | C17: =SUM(Cohorts!M31:M40) -> 9023087.696 | D17: =SUM(Cohorts!N41:N50) -> 4588034.709 | E17: =SUM(Cohorts!N51:N60) -> 4700533.36
B18: Facility Costs | C18: =Cohorts!G31*Cohorts!L31+Cohorts!G32*Cohorts!L32+Cohorts!G33*Cohorts!L33+Cohorts!G34*Cohorts!L34+Cohorts!G35*Cohorts!L35+Cohorts!G36*Cohorts!L36+Cohorts!G37*Cohorts!L37+Cohorts!G38*Cohorts!L38+Cohorts!G39*Cohorts!L39+Cohorts!G40*Cohorts!L40 -> 2706926.309 | D18: =Cohorts!G41*Cohorts!M41+Cohorts!G42*Cohorts!M41+Cohorts!G43*Cohorts!M43+Cohorts!G44*Cohorts!M43+Cohorts!G44*Cohorts!M44+Cohorts!G45*Cohorts!M45+Cohorts!G46*Cohorts!M45+Cohorts!G46*Cohorts!M46+Cohorts!G47*Cohorts!M46+Cohorts!G47*Cohorts!M47+Cohorts!G48*Cohorts!M47+Cohorts!G48*Cohorts!M48+Cohorts!G49*Cohorts!M48+Cohorts!G49*Cohorts!M49+Cohorts!G50*Cohorts!M50 -> 1922638.74 | E18: =Cohorts!G36*Cohorts!N36+Cohorts!G37*Cohorts!N37+Cohorts!G38*Cohorts!N38+Cohorts!G39*Cohorts!N39+Cohorts!G40*Cohorts!N40 -> 99231.15333
B19: Promoting Best Practice activity ($2M of component 2) | C19: =2000000/3 -> 666666.6667 | D19: =2000000/3 -> 666666.6667 | E19: =2000000/3 -> 666666.6667
B20: O&M costs | D20: =SUM(Cohorts!$N$31:$N$40) -> 200101.9712 | E20: =D20*(1+$C$8)+SUM(Cohorts!O41:O50) -> 306312.4511 | F20: =E20*(1+$C$8)+SUM(Cohorts!O51:O60) -> 313144.6092 | G20: =F20*(1+$C$8) -> 320129.1554 | H20: =G20*(1+$C$8) -> 327269.4888 | I20: =H20*(1+$C$8) -> 334569.0839 | J20: =I20*(1+$C$8) -> 342031.4932 | K20: =J20*(1+$C$8) -> 349660.3481 | L20: 357459.3611 | M20: 365432.3274 | N20: 373583.1271 | O20: 381915.7267 | P20: 390434.181 | Q20: 399142.6355 | R20: 408045.3281 | S20: 417146.5912 | T20: 426450.8537 | U20: 435962.6435 | V20: 445686.5895 | W20: 455627.4235 | X20: 465789.9833 | Y20: 476179.2143 | Z20: 486800.1722 | AA20: 497658.0258 | AB20: 508758.0588 | AC20: 520105.6729 | AD20: 531706.3903 | AE20: 543565.8564 | AF20: 555689.8424 | AG20: 568084.2483 | AH20: 580755.1058 | AI20: 593708.5809 | AJ20: 606950.9772 | AK20: 620488.7391 | AL20: 634328.4546 | AM20: 648476.8586 | AN20: 662940.8361 | AO20: 677727.4261 | AP20: 692843.8241 | AQ20: 708297.3864 | AR20: 724095.6332 | AS20: 740246.2527 | AT20: 756757.1044 | AU20: 773636.2229
B21: Private Sector Investment | C21: =SUM(Cohorts!I31:I40) -> 2058209.358 | D21: =SUM(Cohorts!I41:I50) -> 1543139.576 | E21: =SUM(Cohorts!I51:I60) -> 0
B22: Student costs | E22: =$C$7*Cohorts!G730 -> 331792.1305 | F22: =$C$7*Cohorts!H730 -> 938983.0323 | G22: =$C$7*Cohorts!I730 -> 1214381.803 | H22: =$C$7*Cohorts!J730 -> 1214381.803 | I22: =$C$7*Cohorts!K730 -> 1214381.803 | J22: =$C$7*Cohorts!L730 -> 1214381.803 | K22: =$C$7*Cohorts!M730 -> 1214381.803 | L22: =$C$7*Cohorts!N730 -> 1214381.803 | M22: =$C$7*Cohorts!O730 -> 1214381.803 | N22: =$C$7*Cohorts!P730 -> 1214381.803 | O22: =$C$7*Cohorts!Q730 -> 1214381.803 | P22: =$C$7*Cohorts!R730 -> 1214381.803 | Q22: =$C$7*Cohorts!S730 -> 1214381.803 | R22: =$C$7*Cohorts!T730 -> 1214381.803 | S22: =$C$7*Cohorts!U730 -> 1214381.803 | T22: =$C$7*Cohorts!V730 -> 1214381.803 | U22: =$C$7*Cohorts!W730 -> 1214381.803 | V22: =$C$7*Cohorts!X730 -> 1214381.803 | W22: =$C$7*Cohorts!Y730 -> 1214381.803 | X22: =$C$7*Cohorts!Z730 -> 1211681.317 | Y22: =$C$7*Cohorts!AA730 -> 882589.673 | Z22: =$C$7*Cohorts!AB730 -> 275398.7712 | AA22: =$C$7*Cohorts!AC730 -> 0 | AB22: =$C$7*Cohorts!AD730 -> 0 | AC22: =$C$7*Cohorts!AE730 -> 0
B23: COSTS only for component 1 | C23: =SUM(C17:C18,C20:C22) -> 13788223.36 | D23: =SUM(D17:D18,D20:D22) -> 8253914.995 | E23: 5437869.095 | F23: 1252127.641 | G23: 1534510.959 | H23: 1541651.292 | I23: 1548950.887 | J23: 1556413.297 | K23: 1564042.152 | L23: 1571841.165 | M23: 1579814.131 | N23: 1587964.931 | O23: 1596297.53 | P23: 1604815.984 | Q23: 1613524.439 | R23: 1622427.132 | S23: 1631528.395 | T23: 1640832.657 | U23: 1650344.447 | V23: 1660068.393 | W23: 1670009.227 | X23: 1677471.3 | Y23: 1358768.887 | Z23: 762198.9435 | AA23: 497658.0258 | AB23: 508758.0588 | AC23: 520105.6729 | AD23: 531706.3903 | AE23: 543565.8564 | AF23: 555689.8424 | AG23: 568084.2483 | AH23: 580755.1058 | AI23: 593708.5809 | AJ23: 606950.9772 | AK23: 620488.7391 | AL23: 634328.4546 | AM23: 648476.8586 | AN23: 662940.8361 | AO23: 677727.4261 | AP23: 692843.8241 | AQ23: 708297.3864 | AR23: 724095.6332 | AS23: 740246.2527 | AT23: 756757.1044 | AU23: 773636.2229
B24: COSTS incl $2M for component 2 | C24: =SUM(C17:C22) -> 14454890.03 | D24: 8920581.662 | E24: 6104535.762 | F24: 1252127.641 | G24: 1534510.959 | H24: 1541651.292 | I24: 1548950.887 | J24: 1556413.297 | K24: 1564042.152 | L24: 1571841.165 | M24: 1579814.131 | N24: 1587964.931 | O24: 1596297.53 | P24: 1604815.984 | Q24: 1613524.439 | R24: 1622427.132 | S24: 1631528.395 | T24: 1640832.657 | U24: 1650344.447 | V24: 1660068.393 | W24: 1670009.227 | X24: 1677471.3 | Y24: 1358768.887 | Z24: 762198.9435 | AA24: 497658.0258 | AB24: =SUM(AB17:AB22) -> 508758.0588 | AC24: 520105.6729 | AD24: 531706.3903 | AE24: 543565.8564 | AF24: 555689.8424 | AG24: 568084.2483 | AH24: 580755.1058 | AI24: 593708.5809 | AJ24: 606950.9772 | AK24: 620488.7391 | AL24: 634328.4546 | AM24: 648476.8586 | AN24: 662940.8361 | AO24: 677727.4261 | AP24: 692843.8241 | AQ24: 708297.3864 | AR24: 724095.6332 | AS24: 740246.2527 | AT24: 756757.1044 | AU24: 773636.2229
B27: Net Benefit (only comp 1): | C27: =C14-C23 -> -13788223.36 | D27: =D14-D23 -> -8253914.995 | E27: -5437869.095 | F27: -1064424.329 | G27: -1177189.87 | H27: -763131.5299 | I27: -309450.7322 | J27: 186705.7835 | K27: 728374.1922 | L27: 1318784.586 | M27: 1961372.612 | N27: 2659791.783 | O27: 3417926.495 | P27: 4239905.798 | Q27: 5176206.382 | R27: 6159964.815 | S27: 7153500.217 | T27: 8258251.739 | U27: 9471019.73 | V27: 10778420.71 | W27: 12186754.12 | X27: 13701332.56 | Y27: 16018624.31 | Z27: 17521635.43 | AA27: 17679385 | AB27: 17508700.87 | AC27: 17280134.31 | AD27: 16988493.53 | AE27: 16628220.49 | AF27: 16193367.7 | AG27: 15677573.52 | AH27: 15074036.12 | AI27: 14375485.73 | AJ27: 13574155.42 | AK27: 12661749.98 | AL27: 11629413.07 | AM27: 10467692.4 | AN27: 9166502.808 | AO27: 7715087.234 | AP27: 6084140.023 | AQ27: 4324907.797 | AR27: 2351398.477 | AS27: -740246.2527 | AT27: -756757.1044 | AU27: -773636.2229
B28: Net Benefit (incl. comp 2): | C28: =C14-C24 -> -14454890.03 | D28: -8920581.662 | E28: -6104535.762 | F28: -1064424.329 | G28: -1177189.87 | H28: -763131.5299 | I28: -309450.7322 | J28: 186705.7835 | K28: 728374.1922 | L28: 1318784.586 | M28: 1961372.612 | N28: 2659791.783 | O28: 3417926.495 | P28: 4239905.798 | Q28: 5176206.382 | R28: 6159964.815 | S28: 7153500.217 | T28: 8258251.739 | U28: 9471019.73 | V28: 10778420.71 | W28: 12186754.12 | X28: 13701332.56 | Y28: 16018624.31 | Z28: 17521635.43 | AA28: 17679385 | AB28: 17508700.87 | AC28: 17280134.31 | AD28: 16988493.53 | AE28: 16628220.49 | AF28: 16193367.7 | AG28: 15677573.52 | AH28: 15074036.12 | AI28: 14375485.73 | AJ28: 13574155.42 | AK28: 12661749.98 | AL28: 11629413.07 | AM28: 10467692.4 | AN28: 9166502.808 | AO28: 7715087.234 | AP28: 6084140.023 | AQ28: 4324907.797 | AR28: 2351398.477 | AS28: -740246.2527 | AT28: -756757.1044 | AU28: -773636.2229
B29: Net benefits if benefits delayed 1 year | C29: =-C24 -> -14454890.03 | D29: =C14-D24 -> -8920581.662 | E29: =D14-E24 -> -6104535.762 | F29: -1252127.641 | G29: -1346807.646 | H29: -1184330.203 | I29: -770431.1251 | J29: -316913.1415 | K29: 179076.9286 | L29: 720575.1793 | M29: 1310811.62 | N29: 1953221.812 | O29: 2651459.183 | P29: 3409408.041 | Q29: 4231197.344 | R29: 5167303.69 | S29: 6150863.552 | T29: 7144195.955 | U29: 8248739.949 | V29: 9461295.784 | W29: 10768479.88 | X29: 12179292.05 | Y29: 14020034.97 | Z29: 16615194.25 | AA29: 17786176.35 | AB29: 17668284.97 | AC29: 17497353.26 | AD29: 17268533.59 | AE29: 16976634.06 | AF29: 16616096.51 | AG29: 16180973.29 | AH29: 15664902.67 | AI29: 15061082.64 | AJ29: 14362243.33 | AK29: 13560617.65 | AL29: 12647910.26 | AM29: 11615264.67 | AN29: 10453228.42 | AO29: 9151716.218 | AP29: 7699970.836 | AQ29: 6068686.461 | AR29: 4309109.55 | AS29: 2335247.858 | AT29: -756757.1044 | AU29: -773636.2229
B30: Net benefits if benefits delayed 2 years | C30: =-C24 -> -14454890.03 | D30: =-D24 -> -8920581.662 | E30: =C14-E24 -> -6104535.762 | F30: =D14-F24 -> -1252127.641 | G30: -1534510.959 | H30: -1353947.979 | I30: -1191629.798 | J30: -777893.5343 | K30: -324541.9964 | L30: 171277.9156 | M30: 712602.2129 | N30: 1302660.82 | O30: 1944889.213 | P30: 2642940.729 | Q30: 3400699.587 | R30: 4222294.651 | S30: 5158202.426 | T30: 6141559.29 | U30: 7134684.165 | V30: 8239016.003 | W30: 9451354.95 | X30: 10761017.81 | Y30: 12497994.46 | Z30: 14616604.92 | AA30: 16879735.17 | AB30: 17775076.32 | AC30: 17656937.35 | AD30: 17485752.54 | AE30: 17256674.13 | AF30: 16964510.08 | AG30: 16603702.1 | AH30: 16168302.43 | AI30: 15651949.19 | AJ30: 15047840.24 | AK30: 14348705.57 | AL30: 13546777.94 | AM30: 12633761.86 | AN30: 11600800.69 | AO30: 10438441.83 | AP30: 9136599.82 | AQ30: 7684517.273 | AR30: 6052888.214 | AS30: 4292958.931 | AT30: 2318737.006 | AU30: -773636.2229
B32: NPV (incl. comp 2 costs) = | C32: =NPV(0.1,C28:AK28) -> 3632404.709 | E32: PV Benefits | F32: =NPV(0.1,C14:AU14) -> 40537112.19
B33: ERR only incl. comp.1 costs= | C33: =IRR(C27:AK27) -> 0.1105837691 | E33: PV Costs | F33: =NPV(0.1,C24:AU24) -> 35558177.05
B34: ERR incl. comp.1 costs plus $2M in com.2= | C34: =IRR(C28:AK28) -> 0.1070142603
B35: ERR if benefits delayed 1 year | C35: =IRR(C29:AU29) -> 0.1023258811
B36: ERR if benefits delayed 2 years | C36: =IRR(C30:AU30) -> 0.09636278925
B37: Official ERR | C37: 0.14 | E37: PV Benefits (official ERR) | F37: 59760522
E38: PV Costs (official ERR) | F38: 41581420
B39: Note | C39: Description
B40: 1 | C40: Average tuition is assumed to be the approximate value of the TVET 4/5 Voucher (2500 Gel)

Sheet Cohorts
J1: Last updated: 12/16/2014
B2: Georgia II: Industry-led Skills and Workforce Development Project
B3: Cohort
B5: =IF('ERR & Sensitivity Analysis'!I10="N","NOTE: Current calculations are based on USER INPUT and are not the original MCC estimates.",IF('ERR & Sensitivity Analysis'!I14="N", "NOTE: Current calculations are based on USER INPUT and are not the original MCC estimates.","")) -> 
C7: Note: Assume the facility receives 5 proposals per year and they give out grants until all of the money is gone. Proposals that come in year 5 would not likely have time to produce cohorts of students within the lifetime of the compact, so it is assumed that all grant money is used by the end of year 4. Currently, TA costs and program costs are not broken out, but it's likely that TA costs would be front-loaded. It is assumed that all development costs will be expended in the first year. Private investment is assumed to be 30% of proposal value (on top of proposed value), either in cash or in kind.
A13: Notes | B13: Assumptions | F13: Base Case Scenario | G13: Min | H13: Max | I13: Total
A14: 1 | B14: Average cost of a proposal | G14: 300000 | H14: 3000000 | I14: =10500000+1500000 -> 12000000
A15: 2 | B15: Average number of students in each cohort | F15: ='ERR & Sensitivity Analysis'!D16*I16 -> 40 | G15: 20 | H15: 100
A16: 3 | B16: Length of proposed courses | F16: 2 | H16: sensitivity | I16: 1
A17: 4 | B17: Fraction doing 2 year certificate vs 1 year program | F17: 1
A18: 5 | B18: TVET graduation rate | F18: 0.95
B19: Private sector investment as % of grant value | F19: 0.3 | G19: SD = | H19: 0.2
B20: Wage increment | F20: ='ERR & Sensitivity Analysis'!D14*H20 -> 0.238 | G20: sensitivity | H20: 1
B21: Employment rate increment | F21: ='ERR & Sensitivity Analysis'!D15*H21 -> 0.09 | G21: sensitivity | H21: 1
B22: TA cost as a proportion of total grant | F22: 0.15
B23: Due Diligence as a percentage of total grant | F23: 0.15
A24: 6 | B24: Percentage of the cost that will recur as O&M | F24: 0.02217666257
F25: 2013 | G25: 2014 | H25: 2015
A26: 7 | B26: Probability that a proposal will be chosen | F26: 0.75 | G26: 1 | H26: 1
B28: "With project" Costs
D29: Suitable Quality? | E29: Proposal Amount | F29: Cumulative cost | G29: Sufficient Funds? | H29: Private investment | I29: Private investment | J29: Wage Increment | K29: Emlpoymt Rate inc | L29: 2013 | M29: =L29+1 -> 2014 | N29: =M29+1 -> 2015 | O29: 2016 | P29: 2017 | Q29: 2018 | R29: 2019 | S29: 2020 | T29: 2021 | U29: 2022 | V29: 2023 | W29: 2024 | X29: 2025 | Y29: 2026 | Z29: 2027 | AA29: 2028 | AB29: 2029 | AC29: 2030 | AD29: 2031 | AE29: 2032 | AF29: =AE29+1 -> 2033 | AG29: 2034 | AH29: 2035 | AI29: 2036 | AJ29: 2037 | AK29: 2038 | AL29: 2039
L30: 0 | M30: 1 | N30: 2 | O30: 3 | P30: 4 | Q30: 5 | R30: 6 | S30: 7 | T30: 8 | U30: 9 | V30: 10 | W30: 11 | X30: 12 | Y30: 13 | Z30: 14 | AA30: 15 | AB30: 16 | AC30: 17 | AD30: 18 | AE30: 19 | AF30: 20 | AG30: =AF30+1 -> 21 | AH30: 22 | AI30: 23 | AJ30: 24 | AK30: 25 | AL30: 26
B31: Compact year 1 | C31: Proposal 1 | D31: 0 | E31: 2736119.361 | F31: =(E31+L31)*D31 -> 0 | G31: =IF(F31<=$I$14,1,0) -> 1 | H31: 0.3025931104 | I31: =H31*E31*D31*G31 -> 0 | J31: 0.3089452746 | K31: 0.05637975205 | L31: =($F$23+$F$22)*E31*D31 -> 0 | M31: =G31*E31*D31 -> 0 | N31: =M31*$F$24 -> 0 | O31: =N31 -> 0 | P31: =SUM($M31:$N31)*$F$24 -> 0 | Q31: 0 | R31: 0 | S31: 0 | T31: 0 | U31: 0 | V31: 0 | W31: 0 | X31: 0 | Y31: 0 | Z31: =SUM($M31:$N31)*$F$24 -> 0 | AA31: 0 | AB31: 0 | AC31: 0 | AD31: 0 | AE31: 0 | AF31: 0 | AG31: 0 | AH31: 0
C32: Proposal 2 | D32: 0 | E32: 1349256.868 | F32: =IF((E32+L32)*D32+F31<=$I$14,(E32+L32)*D32+F31,F31) -> 0 | G32: =IF(F31+E32+L32<=$I$14,1,0) -> 1 | H32: 0.3077377862 | I32: 0 | J32: 0.3609160776 | K32: 0.1041951086 | L32: =($F$23+$F$22)*E32*D32 -> 0 | M32: 0 | N32: 0 | O32: =SUM($M32:$N32)*$F$24 -> 0 | P32: 0 | Q32: 0 | R32: 0 | S32: 0 | T32: 0 | U32: 0 | V32: 0 | W32: 0 | X32: 0 | Y32: 0 | Z32: 0 | AA32: 0 | AB32: 0 | AC32: 0 | AD32: 0 | AE32: 0 | AF32: 0 | AG32: 0 | AH32: 0
C33: Proposal 3 | D33: 1 | E33: 1600227.504 | F33: 2080295.755 | G33: 1 | H33: 0.4060106879 | I33: 649709.4696 | J33: 0.3263392409 | K33: 0.1217938724 | L33: 480068.2511 | M33: 1600227.504 | N33: 35487.70539 | O33: 36274.70425 | P33: 36274.70425 | Q33: 36274.70425 | R33: 36274.70425 | S33: 36274.70425 | T33: 36274.70425 | U33: 36274.70425 | V33: 36274.70425 | W33: 36274.70425 | X33: 36274.70425 | Y33: 36274.70425 | Z33: 36274.70425 | AA33: 36274.70425 | AB33: 36274.70425 | AC33: 36274.70425 | AD33: 36274.70425 | AE33: 36274.70425 | AF33: 36274.70425 | AG33: 36274.70425 | AH33: 36274.70425
C34: Proposal 4 | D34: 0 | E34: 2223300.756 | F34: 2080295.755 | G34: 1 | H34: 0.6055529584 | I34: 0 | J34: 0.5335700799 | K34: 0.1228893156 | L34: 0 | M34: 0 | N34: 0 | O34: 0 | P34: 0 | Q34: 0 | R34: 0 | S34: 0 | T34: 0 | U34: 0 | V34: 0 | W34: 0 | X34: 0 | Y34: 0 | Z34: 0 | AA34: 0 | AB34: 0 | AC34: 0 | AD34: 0 | AE34: 0 | AF34: 0 | AG34: 0 | AH34: 0
C35: Proposal 5 | D35: 1 | E35: 2948284.588 | F35: 5913065.719 | G35: 1 | H35: 0.02801299677 | I35: 82590.28664 | J35: 0.2579710859 | K35: 0.02443120782 | L35: 884485.3765 | M35: 2948284.588 | N35: 65383.11248 | O35: 66833.09171 | P35: 66833.09171 | Q35: 66833.09171 | R35: 66833.09171 | S35: 66833.09171 | T35: 66833.09171 | U35: 66833.09171 | V35: 66833.09171 | W35: 66833.09171 | X35: 66833.09171 | Y35: 66833.09171 | Z35: 66833.09171 | AA35: 66833.09171 | AB35: 66833.09171 | AC35: 66833.09171 | AD35: 66833.09171 | AE35: 66833.09171 | AF35: 66833.09171 | AG35: 66833.09171 | AH35: 66833.09171
C36: Proposal 6 | D36: 1 | E36: 1257614.35 | F36: 7547964.374 | G36: 1 | H36: 0.2364072857 | I36: 297309.1949 | J36: 0.3019022666 | K36: 0.06724309927 | L36: 377284.3049 | M36: 1257614.35 | N36: 27889.68908 | O36: 28508.1893 | P36: 28508.1893 | Q36: 28508.1893 | R36: 28508.1893 | S36: 28508.1893 | T36: 28508.1893 | U36: 28508.1893 | V36: 28508.1893 | W36: 28508.1893 | X36: 28508.1893 | Y36: 28508.1893 | Z36: 28508.1893 | AA36: 28508.1893 | AB36: 28508.1893 | AC36: 28508.1893 | AD36: 28508.1893 | AE36: 28508.1893 | AF36: 28508.1893 | AG36: 28508.1893 | AH36: 28508.1893
C37: Proposal 7 | D37: 1 | E37: 2476404.722 | F37: 10767290.51 | G37: 1 | H37: 0.3094310602 | I37: 766276.5387 | J37: 0.453251845 | K37: 0.04934050053 | L37: 742921.4166 | M37: 2476404.722 | N37: 54918.39191 | O37: 56136.29856 | P37: 56136.29856 | Q37: 56136.29856 | R37: 56136.29856 | S37: 56136.29856 | T37: 56136.29856 | U37: 56136.29856 | V37: 56136.29856 | W37: 56136.29856 | X37: 56136.29856 | Y37: 56136.29856 | Z37: 56136.29856 | AA37: 56136.29856 | AB37: 56136.29856 | AC37: 56136.29856 | AD37: 56136.29856 | AE37: 56136.29856 | AF37: 56136.29856 | AG37: 56136.29856 | AH37: 56136.29856
C38: Proposal 8 | D38: 1 | E38: 740556.5323 | F38: 11730014 | G38: 1 | H38: 0.3542253117 | I38: 262323.8685 | J38: 0.4512890113 | K38: 0.01998003192 | L38: 222166.9597 | M38: 740556.5323 | N38: 16423.07233 | O38: 16787.28127 | P38: 16787.28127 | Q38: 16787.28127 | R38: 16787.28127 | S38: 16787.28127 | T38: 16787.28127 | U38: 16787.28127 | V38: 16787.28127 | W38: 16787.28127 | X38: 16787.28127 | Y38: 16787.28127 | Z38: 16787.28127 | AA38: 16787.28127 | AB38: 16787.28127 | AC38: 16787.28127 | AD38: 16787.28127 | AE38: 16787.28127 | AF38: 16787.28127 | AG38: 16787.28127 | AH38: 16787.28127
C39: Proposal 9 | D39: 1 | E39: 1549516.646 | F39: 11730014 | G39: 0 | H39: 0.1685541217 | I39: 0 | J39: 0.328786859 | K39: 0.1022319888 | L39: 464854.9939 | M39: 0 | N39: 0 | O39: 0 | P39: 0 | Q39: 0 | R39: 0 | S39: 0 | T39: 0 | U39: 0 | V39: 0 | W39: 0 | X39: 0 | Y39: 0 | Z39: 0 | AA39: 0 | AB39: 0 | AC39: 0 | AD39: 0 | AE39: 0 | AF39: 0 | AG39: 0 | AH39: 0
C40: Proposal 10 | D40: 1 | E40: 2189000.771 | F40: 11730014 | G40: 0 | H40: 0.1880928497 | I40: 0 | J40: 0.3425499159 | K40: 0.1070804613 | L40: 656700.2314 | M40: 0 | N40: 0 | O40: 0 | P40: 0 | Q40: 0 | R40: 0 | S40: 0 | T40: 0 | U40: 0 | V40: 0 | W40: 0 | X40: 0 | Y40: 0 | Z40: 0 | AA40: 0 | AB40: 0 | AC40: 0 | AD40: 0 | AE40: 0 | AF40: 0 | AG40: 0 | AH40: 0
B41: Compact year 2 | C41: Proposal 11 | D41: 1 | E41: 2455082.311 | F41: =IF((E41+M41)*D41+F35<=$I$14,(E41+M41)*D41+F35,F35) -> 9104672.723 | G41: =IF(F35+E41+M41<=$I$14,1,0) -> 1 | H41: 0.4883244771 | I41: 1198876.786 | J41: 0.4753859335 | K41: 0.101230812 | M41: =($F$23+$F$22)*E41*D41 -> 736524.6932 | N41: =G41*E41*D41 -> 2455082.311 | O41: =N41*$F$24 -> 54445.53199 | P41: =O41 -> 54445.53199 | Q41: =SUM($N41:$O41)*$F$24 -> 55652.95219 | R41: 55652.95219 | S41: 55652.95219 | T41: 55652.95219 | U41: 55652.95219 | V41: 55652.95219 | W41: 55652.95219 | X41: 55652.95219 | Y41: 55652.95219 | Z41: 55652.95219 | AA41: =SUM($N41:$O41)*$F$24 -> 55652.95219 | AB41: 55652.95219 | AC41: 55652.95219 | AD41: 55652.95219 | AE41: 55652.95219 | AF41: 55652.95219 | AG41: 55652.95219 | AH41: 55652.95219 | AI41: 55652.95219
C42: Proposal 12 | D42: 1 | E42: 2658163.469 | F42: =IF((E42+M42)*D42+F41<=$I$14,(E42+M42)*D42+F41,F41) -> 9104672.723 | G42: =IF(F41+E42+M42<=$I$14,1,0) -> 0 | H42: 0.02597364615 | I42: 0 | J42: 0.4177655495 | K42: 0.0349595833 | M42: =($F$23+$F$22)*E42*D42 -> 797449.0407 | N42: 0 | O42: 0 | P42: 0 | Q42: 0 | R42: 0 | S42: 0 | T42: 0 | U42: 0 | V42: 0 | W42: 0 | X42: 0 | Y42: 0 | Z42: 0 | AA42: 0 | AB42: 0 | AC42: 0 | AD42: 0 | AE42: 0 | AF42: 0 | AG42: 0 | AH42: 0 | AI42: 0
C43: Proposal 13 | D43: 1 | E43: 1343340.852 | F43: 10851015.83 | G43: 1 | H43: 0.2178139555 | I43: 292598.3846 | J43: 0.3053044973 | K43: 0.1326798247 | M43: 403002.2557 | N43: 1343340.852 | O43: 29790.8168 | P43: 29790.8168 | Q43: 30451.4777 | R43: 30451.4777 | S43: 30451.4777 | T43: 30451.4777 | U43: 30451.4777 | V43: 30451.4777 | W43: 30451.4777 | X43: 30451.4777 | Y43: 30451.4777 | Z43: 30451.4777 | AA43: 30451.4777 | AB43: 30451.4777 | AC43: 30451.4777 | AD43: 30451.4777 | AE43: 30451.4777 | AF43: 30451.4777 | AG43: 30451.4777 | AH43: 30451.4777 | AI43: 30451.4777
C44: Proposal 14 | D44: 1 | E44: 2832184.603 | F44: 10851015.83 | G44: 0 | H44: 0.3703898374 | I44: 0 | J44: 0.3783443759 | K44: 0.1354396672 | M44: 849655.3809 | N44: 0 | O44: 0 | P44: 0 | Q44: 0 | R44: 0 | S44: 0 | T44: 0 | U44: 0 | V44: 0 | W44: 0 | X44: 0 | Y44: 0 | Z44: 0 | AA44: 0 | AB44: 0 | AC44: 0 | AD44: 0 | AE44: 0 | AF44: 0 | AG44: 0 | AH44: 0 | AI44: 0
C45: Proposal 15 | D45: 1 | E45: 1820761.09 | F45: 10851015.83 | G45: 0 | H45: 0.606918179 | I45: 0 | J45: 0.5065749463 | K45: 0.1282938553 | M45: 546228.3271 | N45: 0 | O45: 0 | P45: 0 | Q45: 0 | R45: 0 | S45: 0 | T45: 0 | U45: 0 | V45: 0 | W45: 0 | X45: 0 | Y45: 0 | Z45: 0 | AA45: 0 | AB45: 0 | AC45: 0 | AD45: 0 | AE45: 0 | AF45: 0 | AG45: 0 | AH45: 0 | AI45: 0
C46: Proposal 16 | D46: 1 | E46: 789611.5457 | F46: 11877510.84 | G46: 1 | H46: 0.0654301544 | I46: 51664.40535 | J46: 0.2717564322 | K46: 0.09785235443 | M46: 236883.4637 | N46: 789611.5457 | O46: 17510.94881 | P46: 17510.94881 | Q46: =SUM($N46:$O46)*$F$24 -> 17899.28322 | R46: 17899.28322 | S46: 17899.28322 | T46: 17899.28322 | U46: 17899.28322 | V46: 17899.28322 | W46: 17899.28322 | X46: 17899.28322 | Y46: 17899.28322 | Z46: 17899.28322 | AA46: 17899.28322 | AB46: 17899.28322 | AC46: 17899.28322 | AD46: 17899.28322 | AE46: 17899.28322 | AF46: 17899.28322 | AG46: =SUM($N46:$O46)*$F$24 -> 17899.28322 | AH46: 17899.28322 | AI46: 17899.28322
C47: Proposal 17 | D47: 1 | E47: 2225363.974 | F47: 11877510.84 | G47: 0 | H47: 0.504279596 | I47: 0 | J47: 0.3280416692 | K47: 0.130017071 | M47: 667609.1923 | N47: 0 | O47: 0 | P47: 0 | Q47: 0 | R47: 0 | S47: 0 | T47: 0 | U47: 0 | V47: 0 | W47: 0 | X47: 0 | Y47: 0 | Z47: 0 | AA47: 0 | AB47: 0 | AC47: 0 | AD47: 0 | AE47: 0 | AF47: 0 | AG47: 0 | AH47: 0 | AI47: 0
C48: Proposal 18 | D48: 1 | E48: 2594574.901 | F48: 11877510.84 | G48: 0 | H48: 0.1452584357 | I48: 0 | J48: 0.3225082598 | K48: 0.06589841624 | M48: 778372.4702 | N48: 0 | O48: 0 | P48: 0 | Q48: 0 | R48: 0 | S48: 0 | T48: 0 | U48: 0 | V48: 0 | W48: 0 | X48: 0 | Y48: 0 | Z48: 0 | AA48: 0 | AB48: 0 | AC48: 0 | AD48: 0 | AE48: 0 | AF48: 0 | AG48: 0 | AH48: 0 | AI48: 0
C49: Proposal 19 | D49: 1 | E49: 2518279.064 | F49: 11877510.84 | G49: 0 | H49: 0.3493228975 | I49: 0 | J49: 0.3363019777 | K49: 0.0550399563 | M49: 755483.7191 | N49: 0 | O49: 0 | P49: 0 | Q49: 0 | R49: 0 | S49: 0 | T49: 0 | U49: 0 | V49: 0 | W49: 0 | X49: 0 | Y49: 0 | Z49: 0 | AA49: 0 | AB49: 0 | AC49: 0 | AD49: 0 | AE49: 0 | AF49: 0 | AG49: 0 | AH49: 0 | AI49: 0
C50: Proposal 20 | D50: 1 | E50: 1433439.987 | F50: 11877510.84 | G50: 0 | H50: 0.2220601271 | I50: 0 | J50: 0.3628944839 | K50: 0.08371852804 | M50: 430031.996 | N50: 0 | O50: 0 | P50: 0 | Q50: 0 | R50: 0 | S50: 0 | T50: 0 | U50: 0 | V50: 0 | W50: 0 | X50: 0 | Y50: 0 | Z50: 0 | AA50: 0 | AB50: 0 | AC50: 0 | AD50: 0 | AE50: 0 | AF50: 0 | AG50: 0 | AH50: 0 | AI50: 0
B51: Compact year 3 | C51: Proposal 21 | D51: 1 | E51: 1464805.922 | F51: =IF((E51+N51)*D51+F40<=$I$14,(E51+N51)*D51+F40,F40) -> 11730014 | G51: =IF(F40+E51+N51<=$I$14,1,0) -> 0 | H51: 0.5791444973 | I51: 0 | J51: 0.5950044286 | K51: 0.1309561151 | N51: =($F$23+$F$22)*E51*D51 -> 439441.7767 | O51: =G51*E51*D51 -> 0 | P51: =O51*$F$24 -> 0 | Q51: =P51 -> 0 | R51: =SUM($O51:$P51)*$F$24 -> 0 | S51: 0 | T51: 0 | U51: 0 | V51: 0 | W51: 0 | X51: 0 | Y51: 0 | Z51: 0 | AA51: 0 | AB51: =SUM($O51:$P51)*$F$24 -> 0 | AC51: 0 | AD51: 0 | AE51: 0 | AF51: 0 | AG51: 0 | AH51: 0 | AI51: 0 | AJ51: 0
C52: Proposal 22 | D52: 1 | E52: 568813.1116 | F52: =IF((E52+N52)*D52+F51<=$I$14,(E52+N52)*D52+F51,F51) -> 11730014 | G52: =IF(F51+E52+N52<=$I$14,1,0) -> 0 | H52: 0.09412468649 | I52: 0 | J52: 0.2678983115 | K52: 0.06481759517 | N52: =($F$23+$F$22)*E52*D52 -> 170643.9335 | O52: 0 | P52: 0 | Q52: 0 | R52: 0 | S52: 0 | T52: 0 | U52: 0 | V52: 0 | W52: 0 | X52: 0 | Y52: 0 | Z52: 0 | AA52: 0 | AB52: 0 | AC52: 0 | AD52: 0 | AE52: 0 | AF52: 0 | AG52: 0 | AH52: 0 | AI52: 0 | AJ52: 0
C53: Proposal 23 | D53: 1 | E53: 2186872.604 | F53: 11730014 | G53: 0 | H53: 0.4437837381 | I53: 0 | J53: 0.4746744117 | K53: 0.09603692775 | N53: 656061.7813 | O53: 0 | P53: 0 | Q53: 0 | R53: 0 | S53: 0 | T53: 0 | U53: 0 | V53: 0 | W53: 0 | X53: 0 | Y53: 0 | Z53: 0 | AA53: 0 | AB53: 0 | AC53: 0 | AD53: 0 | AE53: 0 | AF53: 0 | AG53: 0 | AH53: 0 | AI53: 0 | AJ53: 0
C54: Proposal 24 | D54: 1 | E54: 2031942.701 | F54: 11730014 | G54: 0 | H54: 0.5394732144 | I54: 0 | J54: 0.3818516353 | K54: 0.07249444856 | N54: 609582.8104 | O54: 0 | P54: 0 | Q54: 0 | R54: 0 | S54: 0 | T54: 0 | U54: 0 | V54: 0 | W54: 0 | X54: 0 | Y54: 0 | Z54: 0 | AA54: 0 | AB54: 0 | AC54: 0 | AD54: 0 | AE54: 0 | AF54: 0 | AG54: 0 | AH54: 0 | AI54: 0 | AJ54: 0
C55: Proposal 25 | D55: 1 | E55: 1825448.97 | F55: 11730014 | G55: 0 | H55: 0.1370153131 | I55: 0 | J55: 0.3723546696 | K55: 0.0335353704 | N55: 547634.691 | O55: 0 | P55: 0 | Q55: 0 | R55: 0 | S55: 0 | T55: 0 | U55: 0 | V55: 0 | W55: 0 | X55: 0 | Y55: 0 | Z55: 0 | AA55: 0 | AB55: 0 | AC55: 0 | AD55: 0 | AE55: 0 | AF55: 0 | AG55: 0 | AH55: 0 | AI55: 0 | AJ55: 0
C56: Proposal 26 | D56: 1 | E56: 864460.3049 | F56: 11730014 | G56: 0 | H56: 0.275372923 | I56: 0 | J56: 0.2929929681 | K56: 0.07016243217 | N56: 259338.0915 | O56: 0 | P56: 0 | Q56: 0 | R56: 0 | S56: 0 | T56: 0 | U56: 0 | V56: 0 | W56: 0 | X56: 0 | Y56: 0 | Z56: 0 | AA56: 0 | AB56: 0 | AC56: 0 | AD56: 0 | AE56: 0 | AF56: 0 | AG56: 0 | AH56: 0 | AI56: 0 | AJ56: 0
C57: Proposal 27 | D57: 1 | E57: 1841884.382 | F57: 11730014 | G57: 0 | H57: 0.2649166367 | I57: 0 | J57: 0.3308471604 | K57: 0.08391789173 | N57: 552565.3145 | O57: 0 | P57: 0 | Q57: 0 | R57: 0 | S57: 0 | T57: 0 | U57: 0 | V57: 0 | W57: 0 | X57: 0 | Y57: 0 | Z57: 0 | AA57: 0 | AB57: 0 | AC57: 0 | AD57: 0 | AE57: 0 | AF57: 0 | AG57: 0 | AH57: 0 | AI57: 0 | AJ57: 0
C58: Proposal 28 | D58: 1 | E58: 1904871.663 | F58: 11730014 | G58: 0 | H58: 0.3650944387 | I58: 0 | J58: 0.5129673534 | K58: 0.1210735418 | N58: 571461.499 | O58: 0 | P58: 0 | Q58: 0 | R58: 0 | S58: 0 | T58: 0 | U58: 0 | V58: 0 | W58: 0 | X58: 0 | Y58: 0 | Z58: 0 | AA58: 0 | AB58: 0 | AC58: 0 | AD58: 0 | AE58: 0 | AF58: 0 | AG58: 0 | AH58: 0 | AI58: 0 | AJ58: 0
C59: Proposal 29 | D59: 1 | E59: 2102422.485 | F59: 11730014 | G59: 0 | H59: 0.3369658435 | I59: 0 | J59: 0.3125728979 | K59: 0.1030582762 | N59: 630726.7456 | O59: 0 | P59: 0 | Q59: 0 | R59: 0 | S59: 0 | T59: 0 | U59: 0 | V59: 0 | W59: 0 | X59: 0 | Y59: 0 | Z59: 0 | AA59: 0 | AB59: 0 | AC59: 0 | AD59: 0 | AE59: 0 | AF59: 0 | AG59: 0 | AH59: 0 | AI59: 0 | AJ59: 0
C60: Proposal 30 | D60: 1 | E60: 876922.3903 | F60: 11730014 | G60: 0 | H60: 0.3860677571 | I60: 0 | J60: 0.39760575 | K60: 0.04569403503 | N60: 263076.7171 | O60: 0 | P60: 0 | Q60: 0 | R60: 0 | S60: 0 | T60: 0 | U60: 0 | V60: 0 | W60: 0 | X60: 0 | Y60: 0 | Z60: 0 | AA60: 0 | AB60: 0 | AC60: 0 | AD60: 0 | AE60: 0 | AF60: 0 | AG60: 0 | AH60: 0 | AI60: 0 | AJ60: 0
B62: Undisbursed funds | E62: =$I$14-MAX(F31*D31*G31,F32*D32*G32,F33*D33*G33,F34*D34*G34,F35*D35*G35,F41*D41*G41,F42*D42*G42,F43*D43*G43,F44*D44*G44,F45*D45*G45,F36*D36*G36,F37*D37*G37,F38*D38*G38,F39*D39*G39,F40*D40*G40,D51*F51*G51,D52*F52*G52,D53*F53*G53,D54*F54*G54,D55*F55*G55,D46*F46*G46,D47*F47*G47,D48*F48*G48,D49*F49*G49,D50*F50*G50,D56*F56*G56,D57*F57*G57,D58*F58*G58,D59*F59*G59,D60*F60*G60) -> 122489.1594 | G62: Number grants given | I62: =SUM(D31*G31,D32*G32,D33*G33,D34*G34,D35*G35,D41*G41,D42*G42,D43*G43,D44*G44,D45*G45,D36*G36,D37*G37,D38*G38,D39*G39,D40*G40,D46*G46,D47*G47,D48*G48,D49*G49,D50*G50,D51*G51,D52*G52,D53*G53,D54*G54,D55*G55,D56*G56,D57*G57,D58*G58,D59*G59,D60*G60) -> 8
F63: AVG private investmt | H63: =(G31*H31+G32*H32+G33*H33+G34*H34+G35*H35+G36*H36+G37*H37+G38*H38+G39*H39+G40*H40+G41*H41+G42*H42+G43*H43+G44*H44+G45*H45+G46*H46+G47*H47+G48*H48+G49*H49+G50*H50+G51*H51+G52*H52+G53*H53+G54*H54+G55*H55+G56*H56+G57*H57+G58*H58+G59*H59+G60*H60)/SUM(G31:G60) -> 0.3019581622 | J63: TA and DD costs | L63: =SUM(L31*D31*G31,D32*G32*L32,D33*G33*L33,D34*G34*L34,D35*G35*L35,D36*G36*L36,D37*G37*L37,D38*G38*L38,D39*G39*L39,D40*G40*L40,D41*G41*M41,D42*G42*M42,D43*G43*M43,D44*G44*M44,D45*G45*M45,D46*G46*M46,D47*G47*M47,D48*G48*M48,D49*G49*M49,D50*G50*M50,D51*G51*N51,D52*G52*N52,D53*G53*N53,D54*G54*N54,D55*G55*N55,D56*G56*N56,D57*G57*N57,D58*G58*N58,D59*G59*N59,D60*G60*N60) -> 4083336.721
B64: "With project" Student Numbers
D65: 2013 | E65: =D65+1 -> 2014 | F65: 2015 | G65: 2016 | H65: 2017 | I65: 2018 | J65: 2019 | K65: 2020 | L65: 2021 | M65: 2022 | N65: 2023 | O65: 2024 | P65: 2025 | Q65: 2026 | R65: 2027 | S65: 2028 | T65: 2029 | U65: 2030 | V65: 2031 | W65: 2032 | X65: 2033 | Y65: 2034 | Z65: 2035 | AA65: 2036 | AB65: 2037 | AC65: 2038 | AD65: 2039 | AE65: 2040 | AF65: 2041 | AG65: 2042 | AH65: 2043 | AI65: 2044 | AJ65: 2045 | AK65: 2046 | AL65: 2047 | AM65: 2048 | AN65: 2049 | AO65: 2050 | AP65: 2051 | AQ65: 2052 | AR65: 2053 | AS65: 2054 | AT65: 2055 | AU65: 2056 | AV65: 2057 | AW65: 2058
D66: 0 | E66: 1 | F66: 2 | G66: 3 | H66: 4 | I66: 5 | J66: 6 | K66: 7 | L66: 8 | M66: 9 | N66: 10 | O66: 11 | P66: 12 | Q66: 13 | R66: 14 | S66: 15 | T66: 16 | U66: 17 | V66: 18 | W66: 19 | X66: 20 | Y66: =X66+1 -> 21 | Z66: 22 | AA66: 23 | AB66: 24 | AC66: 25 | AD66: 26 | AE66: 27 | AF66: 28 | AG66: 29 | AH66: 30 | AI66: 31 | AJ66: 32 | AK66: 33 | AL66: 34 | AM66: 35 | AN66: 36 | AO66: 37 | AP66: 38 | AQ66: 39 | AR66: 40 | AS66: 41 | AT66: 42 | AU66: 43 | AV66: 44 | AW66: 45
B67: Compact year 1 | C67: Proposal 1 | D67: 1 | E67: Cohort size | F67: 43.00325019 | G67: =IF($D$31=1, IF($G$31=1,F67,""),"") ->  | H67: =G67 ->  | I67: =IFERROR($F$18*H67,"") ->  | J67: =I67 -> 
D68: 2 | H68: =G67 ->  | I68: =H68 ->  | J68: =IFERROR($F$18*I68,"") ->  | K68: =J68 -> 
D69: 3 | I69: =H68 ->  | J69: =I69 ->  | K69: =IFERROR($F$18*J69,"") ->  | L69: =K69 -> 
D70: 4 | J70: =I69 ->  | K70: =J70 ->  | L70: =IFERROR($F$18*K70,"") ->  | M70: =L70 ->  | N70: =M70 ->  | O70: =N70 ->  | P70: =O70 -> 
D71: 5 | K71: =J70 ->  | L71: =K71 ->  | M71: =IFERROR($F$18*L71,"") ->  | N71: =M71 ->  | O71: =N71 -> 
D72: 6 | L72: =K71 ->  | M72: =L72 ->  | N72: =IFERROR($F$18*M72,"") ->  | O72: =N72 ->  | P72: =O72 ->  | AF72: =AE72 -> 
D73: 7 | M73: =L72 ->  | N73: =M73 ->  | O73: =IFERROR($F$18*N73,"") ->  | P73: =O73 ->  | Q73: =P73 -> 
D74: 8 | N74: =M73 ->  | O74: =N74 ->  | P74: =IFERROR($F$18*O74,"") ->  | Q74: =P74 ->  | R74: =Q74 -> 
D75: 9 | O75: =N74 ->  | P75: =O75 ->  | Q75: =IFERROR($F$18*P75,"") ->  | R75: =Q75 ->  | S75: =R75 -> 
D76: 10 | P76: =O75 ->  | Q76: =P76 ->  | R76: =IFERROR($F$18*Q76,"") ->  | S76: =R76 ->  | T76: =S76 -> 
D77: 11 | Q77: =P76 ->  | R77: =Q77 ->  | S77: =IFERROR($F$18*R77,"") ->  | T77: =S77 ->  | U77: =T77 -> 
D78: 12 | R78: =Q77 ->  | S78: =R78 ->  | T78: =IFERROR($F$18*S78,"") ->  | U78: =T78 ->  | V78: =U78 -> 
D79: 13 | S79: =R78 ->  | T79: =S79 ->  | U79: =IFERROR($F$18*T79,"") ->  | V79: =U79 ->  | W79: =V79 -> 
D80: 14 | T80: =S79 ->  | U80: =T80 ->  | V80: =IFERROR($F$18*U80,"") ->  | W80: =V80 ->  | X80: =W80 -> 
D81: 15 | U81: =T80 ->  | V81: =U81 ->  | W81: =IFERROR($F$18*V81,"") ->  | X81: =W81 ->  | Y81: =X81 -> 
D82: 16 | V82: =U81 ->  | W82: =V82 ->  | X82: =IFERROR($F$18*W82,"") ->  | Y82: =X82 ->  | Z82: =Y82 -> 
D83: 17 | W83: =V82 ->  | X83: =W83 ->  | Y83: =IFERROR($F$18*X83,"") ->  | Z83: =Y83 ->  | AA83: =Z83 -> 
D84: 18 | X84: =W83 ->  | Y84: =X84 ->  | Z84: =IFERROR($F$18*Y84,"") ->  | AA84: =Z84 ->  | AB84: =AA84 -> 
D85: 19 | Y85: =X84 ->  | Z85: =Y85 ->  | AA85: =IFERROR($F$18*Z85,"") ->  | AB85: =AA85 ->  | AC85: =AB85 -> 
D86: 20 | Z86: =Y85 ->  | AA86: =Z86 ->  | AB86: =IFERROR($F$18*AA86,"") ->  | AC86: =AB86 ->  | AD86: =AC86 ->  | AE86: =AD86 -> 
C87: Proposal 2 | D87: 1 | F87: 54.20520782 | G87: =IF($D$32=1, IF($G$32=1,F87,""),"") ->  | H87: =G87 ->  | I87: =IFERROR($F$18*H87,"") ->  | J87: =I87 ->  | K87: =J87 ->  | L87: =K87 -> 
D88: 2 | H88: =G87 ->  | I88: =H88 ->  | J88: =IFERROR($F$18*I88,"") ->  | K88: =J88 ->  | AA88: =Z88 -> 
D89: 3 | I89: =H88 ->  | J89: =I89 ->  | K89: =IFERROR($F$18*J89,"") ->  | L89: =K89 ->  | M89: =L89 -> 
D90: 4 | J90: =I89 ->  | K90: =J90 ->  | L90: =IFERROR($F$18*K90,"") ->  | M90: =L90 ->  | N90: =M90 -> 
D91: 5 | K91: =J90 ->  | L91: =K91 ->  | M91: =IFERROR($F$18*L91,"") ->  | N91: =M91 ->  | O91: =N91 ->  | P91: =O91 -> 
D92: 6 | L92: =K91 ->  | M92: =L92 ->  | N92: =IFERROR($F$18*M92,"") ->  | O92: =N92 ->  | P92: =O92 ->  | Q92: =P92 -> 
D93: 7 | M93: =L92 ->  | N93: =M93 ->  | O93: =IFERROR($F$18*N93,"") ->  | P93: =O93 ->  | Q93: =P93 ->  | R93: =Q93 -> 
D94: 8 | N94: =M93 ->  | O94: =N94 ->  | P94: =IFERROR($F$18*O94,"") ->  | Q94: =P94 ->  | R94: =Q94 ->  | S94: =R94 -> 
D95: 9 | O95: =N94 ->  | P95: =O95 ->  | Q95: =IFERROR($F$18*P95,"") ->  | R95: =Q95 ->  | S95: =R95 ->  | T95: =S95 -> 
D96: 10 | P96: =O95 ->  | Q96: =P96 ->  | R96: =IFERROR($F$18*Q96,"") ->  | S96: =R96 ->  | T96: =S96 ->  | U96: =T96 -> 
D97: 11 | Q97: =P96 ->  | R97: =Q97 ->  | S97: =IFERROR($F$18*R97,"") ->  | T97: =S97 ->  | U97: =T97 ->  | V97: =U97 -> 
D98: 12 | R98: =Q97 ->  | S98: =R98 ->  | T98: =IFERROR($F$18*S98,"") ->  | U98: =T98 ->  | V98: =U98 ->  | W98: =V98 -> 
D99: 13 | S99: =R98 ->  | T99: =S99 ->  | U99: =IFERROR($F$18*T99,"") ->  | V99: =U99 ->  | W99: =V99 ->  | X99: =W99 -> 
D100: 14 | T100: =S99 ->  | U100: =T100 ->  | V100: =IFERROR($F$18*U100,"") ->  | W100: =V100 ->  | X100: =W100 ->  | Y100: =X100 -> 
D101: 15 | U101: =T100 ->  | V101: =U101 ->  | W101: =IFERROR($F$18*V101,"") ->  | X101: =W101 ->  | Y101: =X101 ->  | Z101: =Y101 -> 
D102: 16 | V102: =U101 ->  | W102: =V102 ->  | X102: =IFERROR($F$18*W102,"") ->  | Y102: =X102 ->  | Z102: =Y102 ->  | AA102: =Z102 -> 
D103: 17 | W103: =V102 ->  | X103: =W103 ->  | Y103: =IFERROR($F$18*X103,"") ->  | Z103: =Y103 ->  | AA103: =Z103 ->  | AB103: =AA103 -> 
D104: 18 | X104: =W103 ->  | Y104: =X104 ->  | Z104: =IFERROR($F$18*Y104,"") ->  | AA104: =Z104 ->  | AB104: =AA104 ->  | AC104: =AB104 -> 
D105: 19 | Y105: =X104 ->  | Z105: =Y105 ->  | AA105: =IFERROR($F$18*Z105,"") ->  | AB105: =AA105 ->  | AC105: =AB105 ->  | AD105: =AC105 -> 
D106: 20 | Z106: =Y105 ->  | AA106: =Z106 ->  | AB106: =IFERROR($F$18*AA106,"") ->  | AC106: =AB106 ->  | AD106: =AC106 ->  | AE106: =AD106 -> 
C107: Proposal 3 | D107: 1 | F107: 65.92585413 | G107: =IF($D$33=1, IF($G$33=1,F107,""),"") -> 65.92585413 | H107: =G107 -> 65.92585413 | I107: =IFERROR($F$18*H107,"") -> 62.62956142 | J107: =I107 -> 62.62956142 | K107: =J107 -> 62.62956142 | L107: =K107 -> 62.62956142 | M107: 62.62956142 | N107: 62.62956142 | O107: 62.62956142 | P107: 62.62956142 | Q107: 62.62956142 | R107: 62.62956142 | S107: 62.62956142 | T107: 62.62956142 | U107: 62.62956142 | V107: 62.62956142 | W107: 62.62956142 | X107: 62.62956142 | Y107: 62.62956142 | Z107: 62.62956142 | AA107: 62.62956142
D108: 2 | H108: =G107 -> 65.92585413 | I108: =H108 -> 65.92585413 | J108: =IFERROR($F$18*I108,"") -> 62.62956142 | K108: =J108 -> 62.62956142 | L108: =K108 -> 62.62956142 | M108: =L108 -> 62.62956142 | N108: 62.62956142 | O108: 62.62956142 | P108: 62.62956142 | Q108: 62.62956142 | R108: 62.62956142 | S108: 62.62956142 | T108: 62.62956142 | U108: 62.62956142 | V108: 62.62956142 | W108: 62.62956142 | X108: 62.62956142 | Y108: 62.62956142 | Z108: 62.62956142 | AA108: 62.62956142 | AB108: 62.62956142
D109: 3 | I109: =H108 -> 65.92585413 | J109: =I109 -> 65.92585413 | K109: =IFERROR($F$18*J109,"") -> 62.62956142 | L109: =K109 -> 62.62956142 | M109: =L109 -> 62.62956142 | N109: =M109 -> 62.62956142 | O109: 62.62956142 | P109: 62.62956142 | Q109: 62.62956142 | R109: 62.62956142 | S109: 62.62956142 | T109: 62.62956142 | U109: 62.62956142 | V109: 62.62956142 | W109: 62.62956142 | X109: 62.62956142 | Y109: 62.62956142 | Z109: 62.62956142 | AA109: 62.62956142 | AB109: 62.62956142 | AC109: 62.62956142
D110: 4 | J110: =I109 -> 65.92585413 | K110: =J110 -> 65.92585413 | L110: =IFERROR($F$18*K110,"") -> 62.62956142 | M110: =L110 -> 62.62956142 | N110: =M110 -> 62.62956142 | O110: =N110 -> 62.62956142 | P110: 62.62956142 | Q110: 62.62956142 | R110: 62.62956142 | S110: 62.62956142 | T110: 62.62956142 | U110: 62.62956142 | V110: 62.62956142 | W110: 62.62956142 | X110: 62.62956142 | Y110: 62.62956142 | Z110: 62.62956142 | AA110: 62.62956142 | AB110: 62.62956142 | AC110: 62.62956142 | AD110: 62.62956142
D111: 5 | K111: =J110 -> 65.92585413 | L111: =K111 -> 65.92585413 | M111: =IFERROR($F$18*L111,"") -> 62.62956142 | N111: =M111 -> 62.62956142 | O111: =N111 -> 62.62956142 | P111: =O111 -> 62.62956142 | Q111: 62.62956142 | R111: 62.62956142 | S111: 62.62956142 | T111: 62.62956142 | U111: 62.62956142 | V111: 62.62956142 | W111: 62.62956142 | X111: 62.62956142 | Y111: 62.62956142 | Z111: 62.62956142 | AA111: 62.62956142 | AB111: 62.62956142 | AC111: 62.62956142 | AD111: 62.62956142 | AE111: 62.62956142
D112: 6 | L112: =K111 -> 65.92585413 | M112: =L112 -> 65.92585413 | N112: =IFERROR($F$18*M112,"") -> 62.62956142 | O112: =N112 -> 62.62956142 | P112: =O112 -> 62.62956142 | Q112: =P112 -> 62.62956142 | R112: 62.62956142 | S112: 62.62956142 | T112: 62.62956142 | U112: 62.62956142 | V112: 62.62956142 | W112: 62.62956142 | X112: 62.62956142 | Y112: 62.62956142 | Z112: 62.62956142 | AA112: 62.62956142 | AB112: 62.62956142 | AC112: 62.62956142 | AD112: 62.62956142 | AE112: 62.62956142 | AF112: 62.62956142
D113: 7 | M113: =L112 -> 65.92585413 | N113: =M113 -> 65.92585413 | O113: =IFERROR($F$18*N113,"") -> 62.62956142 | P113: =O113 -> 62.62956142 | Q113: =P113 -> 62.62956142 | R113: =Q113 -> 62.62956142 | S113: 62.62956142 | T113: 62.62956142 | U113: 62.62956142 | V113: 62.62956142 | W113: 62.62956142 | X113: 62.62956142 | Y113: 62.62956142 | Z113: 62.62956142 | AA113: 62.62956142 | AB113: 62.62956142 | AC113: 62.62956142 | AD113: 62.62956142 | AE113: 62.62956142 | AF113: 62.62956142 | AG113: 62.62956142
D114: 8 | N114: =M113 -> 65.92585413 | O114: =N114 -> 65.92585413 | P114: =IFERROR($F$18*O114,"") -> 62.62956142 | Q114: =P114 -> 62.62956142 | R114: =Q114 -> 62.62956142 | S114: =R114 -> 62.62956142 | T114: 62.62956142 | U114: 62.62956142 | V114: 62.62956142 | W114: 62.62956142 | X114: 62.62956142 | Y114: 62.62956142 | Z114: 62.62956142 | AA114: 62.62956142 | AB114: 62.62956142 | AC114: 62.62956142 | AD114: 62.62956142 | AE114: 62.62956142 | AF114: 62.62956142 | AG114: 62.62956142 | AH114: 62.62956142
D115: 9 | O115: =N114 -> 65.92585413 | P115: =O115 -> 65.92585413 | Q115: =IFERROR($F$18*P115,"") -> 62.62956142 | R115: =Q115 -> 62.62956142 | S115: =R115 -> 62.62956142 | T115: =S115 -> 62.62956142 | U115: 62.62956142 | V115: 62.62956142 | W115: 62.62956142 | X115: 62.62956142 | Y115: 62.62956142 | Z115: 62.62956142 | AA115: 62.62956142 | AB115: 62.62956142 | AC115: 62.62956142 | AD115: 62.62956142 | AE115: 62.62956142 | AF115: 62.62956142 | AG115: 62.62956142 | AH115: 62.62956142 | AI115: 62.62956142
D116: 10 | P116: =O115 -> 65.92585413 | Q116: =P116 -> 65.92585413 | R116: =IFERROR($F$18*Q116,"") -> 62.62956142 | S116: =R116 -> 62.62956142 | T116: =S116 -> 62.62956142 | U116: =T116 -> 62.62956142 | V116: 62.62956142 | W116: 62.62956142 | X116: 62.62956142 | Y116: 62.62956142 | Z116: 62.62956142 | AA116: 62.62956142 | AB116: 62.62956142 | AC116: 62.62956142 | AD116: 62.62956142 | AE116: 62.62956142 | AF116: 62.62956142 | AG116: 62.62956142 | AH116: 62.62956142 | AI116: 62.62956142 | AJ116: 62.62956142
D117: 11 | Q117: =P116 -> 65.92585413 | R117: =Q117 -> 65.92585413 | S117: =IFERROR($F$18*R117,"") -> 62.62956142 | T117: =S117 -> 62.62956142 | U117: =T117 -> 62.62956142 | V117: =U117 -> 62.62956142 | W117: 62.62956142 | X117: 62.62956142 | Y117: 62.62956142 | Z117: 62.62956142 | AA117: 62.62956142 | AB117: 62.62956142 | AC117: 62.62956142 | AD117: 62.62956142 | AE117: 62.62956142 | AF117: 62.62956142 | AG117: 62.62956142 | AH117: 62.62956142 | AI117: 62.62956142 | AJ117: 62.62956142 | AK117: 62.62956142
D118: 12 | R118: =Q117 -> 65.92585413 | S118: =R118 -> 65.92585413 | T118: =IFERROR($F$18*S118,"") -> 62.62956142 | U118: =T118 -> 62.62956142 | V118: =U118 -> 62.62956142 | W118: =V118 -> 62.62956142 | X118: 62.62956142 | Y118: 62.62956142 | Z118: 62.62956142 | AA118: 62.62956142 | AB118: 62.62956142 | AC118: 62.62956142 | AD118: 62.62956142 | AE118: 62.62956142 | AF118: 62.62956142 | AG118: 62.62956142 | AH118: 62.62956142 | AI118: 62.62956142 | AJ118: 62.62956142 | AK118: 62.62956142 | AL118: 62.62956142
D119: 13 | S119: =R118 -> 65.92585413 | T119: =S119 -> 65.92585413 | U119: =IFERROR($F$18*T119,"") -> 62.62956142 | V119: =U119 -> 62.62956142 | W119: =V119 -> 62.62956142 | X119: =W119 -> 62.62956142 | Y119: 62.62956142 | Z119: 62.62956142 | AA119: 62.62956142 | AB119: 62.62956142 | AC119: 62.62956142 | AD119: 62.62956142 | AE119: 62.62956142 | AF119: 62.62956142 | AG119: 62.62956142 | AH119: 62.62956142 | AI119: 62.62956142 | AJ119: 62.62956142 | AK119: 62.62956142 | AL119: 62.62956142 | AM119: 62.62956142
D120: 14 | T120: =S119 -> 65.92585413 | U120: =T120 -> 65.92585413 | V120: =IFERROR($F$18*U120,"") -> 62.62956142 | W120: =V120 -> 62.62956142 | X120: =W120 -> 62.62956142 | Y120: =X120 -> 62.62956142 | Z120: 62.62956142 | AA120: 62.62956142 | AB120: 62.62956142 | AC120: 62.62956142 | AD120: 62.62956142 | AE120: 62.62956142 | AF120: 62.62956142 | AG120: 62.62956142 | AH120: 62.62956142 | AI120: 62.62956142 | AJ120: 62.62956142 | AK120: 62.62956142 | AL120: 62.62956142 | AM120: 62.62956142 | AN120: 62.62956142
D121: 15 | U121: =T120 -> 65.92585413 | V121: =U121 -> 65.92585413 | W121: =IFERROR($F$18*V121,"") -> 62.62956142 | X121: =W121 -> 62.62956142 | Y121: =X121 -> 62.62956142 | Z121: =Y121 -> 62.62956142 | AA121: 62.62956142 | AB121: 62.62956142 | AC121: 62.62956142 | AD121: 62.62956142 | AE121: 62.62956142 | AF121: 62.62956142 | AG121: 62.62956142 | AH121: 62.62956142 | AI121: 62.62956142 | AJ121: 62.62956142 | AK121: 62.62956142 | AL121: 62.62956142 | AM121: 62.62956142 | AN121: 62.62956142 | AO121: 62.62956142
D122: 16 | V122: =U121 -> 65.92585413 | W122: =V122 -> 65.92585413 | X122: =IFERROR($F$18*W122,"") -> 62.62956142 | Y122: =X122 -> 62.62956142 | Z122: =Y122 -> 62.62956142 | AA122: =Z122 -> 62.62956142 | AB122: 62.62956142 | AC122: 62.62956142 | AD122: 62.62956142 | AE122: 62.62956142 | AF122: 62.62956142 | AG122: 62.62956142 | AH122: 62.62956142 | AI122: 62.62956142 | AJ122: 62.62956142 | AK122: 62.62956142 | AL122: 62.62956142 | AM122: 62.62956142 | AN122: 62.62956142 | AO122: 62.62956142 | AP122: 62.62956142
D123: 17 | W123: =V122 -> 65.92585413 | X123: =W123 -> 65.92585413 | Y123: =IFERROR($F$18*X123,"") -> 62.62956142 | Z123: =Y123 -> 62.62956142 | AA123: =Z123 -> 62.62956142 | AB123: =AA123 -> 62.62956142 | AC123: 62.62956142 | AD123: 62.62956142 | AE123: 62.62956142 | AF123: 62.62956142 | AG123: 62.62956142 | AH123: 62.62956142 | AI123: 62.62956142 | AJ123: 62.62956142 | AK123: 62.62956142 | AL123: 62.62956142 | AM123: 62.62956142 | AN123: 62.62956142 | AO123: 62.62956142 | AP123: 62.62956142 | AQ123: 62.62956142
D124: 18 | X124: =W123 -> 65.92585413 | Y124: =X124 -> 65.92585413 | Z124: =IFERROR($F$18*Y124,"") -> 62.62956142 | AA124: =Z124 -> 62.62956142 | AB124: =AA124 -> 62.62956142 | AC124: =AB124 -> 62.62956142 | AD124: 62.62956142 | AE124: 62.62956142 | AF124: 62.62956142 | AG124: 62.62956142 | AH124: 62.62956142 | AI124: 62.62956142 | AJ124: 62.62956142 | AK124: 62.62956142 | AL124: 62.62956142 | AM124: 62.62956142 | AN124: 62.62956142 | AO124: 62.62956142 | AP124: 62.62956142 | AQ124: 62.62956142 | AR124: 62.62956142
D125: 19 | Y125: =X124 -> 65.92585413 | Z125: =Y125 -> 65.92585413 | AA125: =IFERROR($F$18*Z125,"") -> 62.62956142 | AB125: =AA125 -> 62.62956142 | AC125: =AB125 -> 62.62956142 | AD125: =AC125 -> 62.62956142 | AE125: 62.62956142 | AF125: 62.62956142 | AG125: 62.62956142 | AH125: 62.62956142 | AI125: 62.62956142 | AJ125: 62.62956142 | AK125: 62.62956142 | AL125: 62.62956142 | AM125: 62.62956142 | AN125: 62.62956142 | AO125: 62.62956142 | AP125: 62.62956142 | AQ125: 62.62956142 | AR125: 62.62956142 | AS125: 62.62956142
D126: 20 | Z126: =Y125 -> 65.92585413 | AA126: =Z126 -> 65.92585413 | AB126: =IFERROR($F$18*AA126,"") -> 62.62956142 | AC126: =AB126 -> 62.62956142 | AD126: =AC126 -> 62.62956142 | AE126: =AD126 -> 62.62956142 | AF126: 62.62956142 | AG126: 62.62956142 | AH126: 62.62956142 | AI126: 62.62956142 | AJ126: 62.62956142 | AK126: 62.62956142 | AL126: 62.62956142 | AM126: 62.62956142 | AN126: 62.62956142 | AO126: 62.62956142 | AP126: 62.62956142 | AQ126: 62.62956142 | AR126: 62.62956142 | AS126: 62.62956142 | AT126: 62.62956142
C127: Proposal 4 | D127: 1 | F127: 28.74190363 | G127: =IF($D$34=1, IF($G$34=1,F127,""),"") ->  | H127: =G127 ->  | I127: =IFERROR($F$18*H127,"") ->  | J127: =I127 ->  | K127: =J127 ->  | L127: =K127 -> 
D128: 2 | H128: =G127 ->  | I128: =H128 ->  | J128: =IFERROR($F$18*I128,"") ->  | K128: =J128 ->  | L128: =K128 ->  | M128: =L128 -> 
D129: 3 | I129: =H128 ->  | J129: =I129 ->  | K129: =IFERROR($F$18*J129,"") ->  | L129: =K129 ->  | M129: =L129 ->  | N129: =M129 -> 
D130: 4 | J130: =I129 ->  | K130: =J130 ->  | L130: =IFERROR($F$18*K130,"") ->  | M130: =L130 ->  | N130: =M130 ->  | O130: =N130 -> 
D131: 5 | K131: =J130 ->  | L131: =K131 ->  | M131: =IFERROR($F$18*L131,"") ->  | N131: =M131 ->  | O131: =N131 ->  | P131: =O131 -> 
D132: 6 | L132: =K131 ->  | M132: =L132 ->  | N132: =IFERROR($F$18*M132,"") ->  | O132: =N132 ->  | P132: =O132 ->  | Q132: =P132 -> 
D133: 7 | M133: =L132 ->  | N133: =M133 ->  | O133: =IFERROR($F$18*N133,"") ->  | P133: =O133 ->  | Q133: =P133 ->  | R133: =Q133 -> 
D134: 8 | N134: =M133 ->  | O134: =N134 ->  | P134: =IFERROR($F$18*O134,"") ->  | Q134: =P134 ->  | R134: =Q134 ->  | S134: =R134 -> 
D135: 9 | O135: =N134 ->  | P135: =O135 ->  | Q135: =IFERROR($F$18*P135,"") ->  | R135: =Q135 ->  | S135: =R135 ->  | T135: =S135 -> 
D136: 10 | P136: =O135 ->  | Q136: =P136 ->  | R136: =IFERROR($F$18*Q136,"") ->  | S136: =R136 ->  | T136: =S136 ->  | U136: =T136 -> 
D137: 11 | Q137: =P136 ->  | R137: =Q137 ->  | S137: =IFERROR($F$18*R137,"") ->  | T137: =S137 ->  | U137: =T137 ->  | V137: =U137 -> 
D138: 12 | R138: =Q137 ->  | S138: =R138 ->  | T138: =IFERROR($F$18*S138,"") ->  | U138: =T138 ->  | V138: =U138 ->  | W138: =V138 -> 
D139: 13 | S139: =R138 ->  | T139: =S139 ->  | U139: =IFERROR($F$18*T139,"") ->  | V139: =U139 ->  | W139: =V139 ->  | X139: =W139 -> 
D140: 14 | T140: =S139 ->  | U140: =T140 ->  | V140: =IFERROR($F$18*U140,"") ->  | W140: =V140 ->  | X140: =W140 ->  | Y140: =X140 -> 
D141: 15 | U141: =T140 ->  | V141: =U141 ->  | W141: =IFERROR($F$18*V141,"") ->  | X141: =W141 ->  | Y141: =X141 ->  | Z141: =Y141 -> 
D142: 16 | V142: =U141 ->  | W142: =V142 ->  | X142: =IFERROR($F$18*W142,"") ->  | Y142: =X142 ->  | Z142: =Y142 ->  | AA142: =Z142 -> 
D143: 17 | W143: =V142 ->  | X143: =W143 ->  | Y143: =IFERROR($F$18*X143,"") ->  | Z143: =Y143 ->  | AA143: =Z143 ->  | AB143: =AA143 -> 
D144: 18 | X144: =W143 ->  | Y144: =X144 ->  | Z144: =IFERROR($F$18*Y144,"") ->  | AA144: =Z144 ->  | AB144: =AA144 ->  | AC144: =AB144 -> 
D145: 19 | Y145: =X144 ->  | Z145: =Y145 ->  | AA145: =IFERROR($F$18*Z145,"") ->  | AB145: =AA145 ->  | AC145: =AB145 ->  | AD145: =AC145 -> 
D146: 20 | Z146: =Y145 ->  | AA146: =Z146 ->  | AB146: =IFERROR($F$18*AA146,"") ->  | AC146: =AB146 ->  | AD146: =AC146 ->  | AE146: =AD146 -> 
C147: Proposal 5 | D147: 1 | F147: 29.74783036 | G147: =IF($D$35=1, IF($G$35=1,F147,""),"") -> 29.74783036 | H147: =G147 -> 29.74783036 | I147: =IFERROR($F$18*H147,"") -> 28.26043884 | J147: =I147 -> 28.26043884 | K147: =J147 -> 28.26043884 | L147: =K147 -> 28.26043884 | M147: 28.26043884 | N147: 28.26043884 | O147: 28.26043884 | P147: 28.26043884 | Q147: 28.26043884 | R147: 28.26043884 | S147: 28.26043884 | T147: 28.26043884 | U147: 28.26043884 | V147: 28.26043884 | W147: 28.26043884 | X147: 28.26043884 | Y147: 28.26043884 | Z147: 28.26043884 | AA147: 28.26043884
D148: 2 | H148: =G147 -> 29.74783036 | I148: =H148 -> 29.74783036 | J148: =IFERROR($F$18*I148,"") -> 28.26043884 | K148: =J148 -> 28.26043884 | L148: =K148 -> 28.26043884 | M148: =L148 -> 28.26043884 | N148: 28.26043884 | O148: 28.26043884 | P148: 28.26043884 | Q148: 28.26043884 | R148: 28.26043884 | S148: 28.26043884 | T148: 28.26043884 | U148: 28.26043884 | V148: 28.26043884 | W148: 28.26043884 | X148: 28.26043884 | Y148: 28.26043884 | Z148: 28.26043884 | AA148: 28.26043884 | AB148: 28.26043884
D149: 3 | I149: =H148 -> 29.74783036 | J149: =I149 -> 29.74783036 | K149: =IFERROR($F$18*J149,"") -> 28.26043884 | L149: =K149 -> 28.26043884 | M149: =L149 -> 28.26043884 | N149: =M149 -> 28.26043884 | O149: 28.26043884 | P149: 28.26043884 | Q149: 28.26043884 | R149: 28.26043884 | S149: 28.26043884 | T149: 28.26043884 | U149: 28.26043884 | V149: 28.26043884 | W149: 28.26043884 | X149: 28.26043884 | Y149: 28.26043884 | Z149: 28.26043884 | AA149: 28.26043884 | AB149: 28.26043884 | AC149: 28.26043884
D150: 4 | J150: =I149 -> 29.74783036 | K150: =J150 -> 29.74783036 | L150: =IFERROR($F$18*K150,"") -> 28.26043884 | M150: =L150 -> 28.26043884 | N150: =M150 -> 28.26043884 | O150: =N150 -> 28.26043884 | P150: 28.26043884 | Q150: 28.26043884 | R150: 28.26043884 | S150: 28.26043884 | T150: 28.26043884 | U150: 28.26043884 | V150: 28.26043884 | W150: 28.26043884 | X150: 28.26043884 | Y150: 28.26043884 | Z150: 28.26043884 | AA150: 28.26043884 | AB150: 28.26043884 | AC150: 28.26043884 | AD150: 28.26043884
D151: 5 | K151: =J150 -> 29.74783036 | L151: =K151 -> 29.74783036 | M151: =IFERROR($F$18*L151,"") -> 28.26043884 | N151: =M151 -> 28.26043884 | O151: =N151 -> 28.26043884 | P151: =O151 -> 28.26043884 | Q151: 28.26043884 | R151: 28.26043884 | S151: 28.26043884 | T151: 28.26043884 | U151: 28.26043884 | V151: 28.26043884 | W151: 28.26043884 | X151: 28.26043884 | Y151: 28.26043884 | Z151: 28.26043884 | AA151: 28.26043884 | AB151: 28.26043884 | AC151: 28.26043884 | AD151: 28.26043884 | AE151: 28.26043884
D152: 6 | L152: =K151 -> 29.74783036 | M152: =L152 -> 29.74783036 | N152: =IFERROR($F$18*M152,"") -> 28.26043884 | O152: =N152 -> 28.26043884 | P152: =O152 -> 28.26043884 | Q152: =P152 -> 28.26043884 | R152: 28.26043884 | S152: 28.26043884 | T152: 28.26043884 | U152: 28.26043884 | V152: 28.26043884 | W152: 28.26043884 | X152: 28.26043884 | Y152: 28.26043884 | Z152: 28.26043884 | AA152: 28.26043884 | AB152: 28.26043884 | AC152: 28.26043884 | AD152: 28.26043884 | AE152: 28.26043884 | AF152: 28.26043884
D153: 7 | M153: =L152 -> 29.74783036 | N153: =M153 -> 29.74783036 | O153: =IFERROR($F$18*N153,"") -> 28.26043884 | P153: =O153 -> 28.26043884 | Q153: =P153 -> 28.26043884 | R153: =Q153 -> 28.26043884 | S153: 28.26043884 | T153: 28.26043884 | U153: 28.26043884 | V153: 28.26043884 | W153: 28.26043884 | X153: 28.26043884 | Y153: 28.26043884 | Z153: 28.26043884 | AA153: 28.26043884 | AB153: 28.26043884 | AC153: 28.26043884 | AD153: 28.26043884 | AE153: 28.26043884 | AF153: 28.26043884 | AG153: 28.26043884
D154: 8 | N154: =M153 -> 29.74783036 | O154: =N154 -> 29.74783036 | P154: =IFERROR($F$18*O154,"") -> 28.26043884 | Q154: =P154 -> 28.26043884 | R154: =Q154 -> 28.26043884 | S154: =R154 -> 28.26043884 | T154: 28.26043884 | U154: 28.26043884 | V154: 28.26043884 | W154: 28.26043884 | X154: 28.26043884 | Y154: 28.26043884 | Z154: 28.26043884 | AA154: 28.26043884 | AB154: 28.26043884 | AC154: 28.26043884 | AD154: 28.26043884 | AE154: 28.26043884 | AF154: 28.26043884 | AG154: 28.26043884 | AH154: 28.26043884
D155: 9 | O155: =N154 -> 29.74783036 | P155: =O155 -> 29.74783036 | Q155: =IFERROR($F$18*P155,"") -> 28.26043884 | R155: =Q155 -> 28.26043884 | S155: =R155 -> 28.26043884 | T155: =S155 -> 28.26043884 | U155: 28.26043884 | V155: 28.26043884 | W155: 28.26043884 | X155: 28.26043884 | Y155: 28.26043884 | Z155: 28.26043884 | AA155: 28.26043884 | AB155: 28.26043884 | AC155: 28.26043884 | AD155: 28.26043884 | AE155: 28.26043884 | AF155: 28.26043884 | AG155: 28.26043884 | AH155: 28.26043884 | AI155: 28.26043884
D156: 10 | P156: =O155 -> 29.74783036 | Q156: =P156 -> 29.74783036 | R156: =IFERROR($F$18*Q156,"") -> 28.26043884 | S156: =R156 -> 28.26043884 | T156: =S156 -> 28.26043884 | U156: =T156 -> 28.26043884 | V156: 28.26043884 | W156: 28.26043884 | X156: 28.26043884 | Y156: 28.26043884 | Z156: 28.26043884 | AA156: 28.26043884 | AB156: 28.26043884 | AC156: 28.26043884 | AD156: 28.26043884 | AE156: 28.26043884 | AF156: 28.26043884 | AG156: 28.26043884 | AH156: 28.26043884 | AI156: 28.26043884 | AJ156: 28.26043884
D157: 11 | Q157: =P156 -> 29.74783036 | R157: =Q157 -> 29.74783036 | S157: =IFERROR($F$18*R157,"") -> 28.26043884 | T157: =S157 -> 28.26043884 | U157: =T157 -> 28.26043884 | V157: =U157 -> 28.26043884 | W157: 28.26043884 | X157: 28.26043884 | Y157: 28.26043884 | Z157: 28.26043884 | AA157: 28.26043884 | AB157: 28.26043884 | AC157: 28.26043884 | AD157: 28.26043884 | AE157: 28.26043884 | AF157: 28.26043884 | AG157: 28.26043884 | AH157: 28.26043884 | AI157: 28.26043884 | AJ157: 28.26043884 | AK157: 28.26043884
D158: 12 | R158: =Q157 -> 29.74783036 | S158: =R158 -> 29.74783036 | T158: =IFERROR($F$18*S158,"") -> 28.26043884 | U158: =T158 -> 28.26043884 | V158: =U158 -> 28.26043884 | W158: =V158 -> 28.26043884 | X158: 28.26043884 | Y158: 28.26043884 | Z158: 28.26043884 | AA158: 28.26043884 | AB158: 28.26043884 | AC158: 28.26043884 | AD158: 28.26043884 | AE158: 28.26043884 | AF158: 28.26043884 | AG158: 28.26043884 | AH158: 28.26043884 | AI158: 28.26043884 | AJ158: 28.26043884 | AK158: 28.26043884 | AL158: 28.26043884
D159: 13 | S159: =R158 -> 29.74783036 | T159: =S159 -> 29.74783036 | U159: =IFERROR($F$18*T159,"") -> 28.26043884 | V159: =U159 -> 28.26043884 | W159: =V159 -> 28.26043884 | X159: =W159 -> 28.26043884 | Y159: 28.26043884 | Z159: 28.26043884 | AA159: 28.26043884 | AB159: 28.26043884 | AC159: 28.26043884 | AD159: 28.26043884 | AE159: 28.26043884 | AF159: 28.26043884 | AG159: 28.26043884 | AH159: 28.26043884 | AI159: 28.26043884 | AJ159: 28.26043884 | AK159: 28.26043884 | AL159: 28.26043884 | AM159: 28.26043884
D160: 14 | T160: =S159 -> 29.74783036 | U160: =T160 -> 29.74783036 | V160: =IFERROR($F$18*U160,"") -> 28.26043884 | W160: =V160 -> 28.26043884 | X160: =W160 -> 28.26043884 | Y160: =X160 -> 28.26043884 | Z160: 28.26043884 | AA160: 28.26043884 | AB160: 28.26043884 | AC160: 28.26043884 | AD160: 28.26043884 | AE160: 28.26043884 | AF160: 28.26043884 | AG160: 28.26043884 | AH160: 28.26043884 | AI160: 28.26043884 | AJ160: 28.26043884 | AK160: 28.26043884 | AL160: 28.26043884 | AM160: 28.26043884 | AN160: 28.26043884
D161: 15 | U161: =T160 -> 29.74783036 | V161: =U161 -> 29.74783036 | W161: =IFERROR($F$18*V161,"") -> 28.26043884 | X161: =W161 -> 28.26043884 | Y161: =X161 -> 28.26043884 | Z161: =Y161 -> 28.26043884 | AA161: 28.26043884 | AB161: 28.26043884 | AC161: 28.26043884 | AD161: 28.26043884 | AE161: 28.26043884 | AF161: 28.26043884 | AG161: 28.26043884 | AH161: 28.26043884 | AI161: 28.26043884 | AJ161: 28.26043884 | AK161: 28.26043884 | AL161: 28.26043884 | AM161: 28.26043884 | AN161: 28.26043884 | AO161: 28.26043884
D162: 16 | V162: =U161 -> 29.74783036 | W162: =V162 -> 29.74783036 | X162: =IFERROR($F$18*W162,"") -> 28.26043884 | Y162: =X162 -> 28.26043884 | Z162: =Y162 -> 28.26043884 | AA162: =Z162 -> 28.26043884 | AB162: 28.26043884 | AC162: 28.26043884 | AD162: 28.26043884 | AE162: 28.26043884 | AF162: 28.26043884 | AG162: 28.26043884 | AH162: 28.26043884 | AI162: 28.26043884 | AJ162: 28.26043884 | AK162: 28.26043884 | AL162: 28.26043884 | AM162: 28.26043884 | AN162: 28.26043884 | AO162: 28.26043884 | AP162: 28.26043884
D163: 17 | W163: =V162 -> 29.74783036 | X163: =W163 -> 29.74783036 | Y163: =IFERROR($F$18*X163,"") -> 28.26043884 | Z163: =Y163 -> 28.26043884 | AA163: =Z163 -> 28.26043884 | AB163: =AA163 -> 28.26043884 | AC163: 28.26043884 | AD163: 28.26043884 | AE163: 28.26043884 | AF163: 28.26043884 | AG163: 28.26043884 | AH163: 28.26043884 | AI163: 28.26043884 | AJ163: 28.26043884 | AK163: 28.26043884 | AL163: 28.26043884 | AM163: 28.26043884 | AN163: 28.26043884 | AO163: 28.26043884 | AP163: 28.26043884 | AQ163: 28.26043884
D164: 18 | X164: =W163 -> 29.74783036 | Y164: =X164 -> 29.74783036 | Z164: =IFERROR($F$18*Y164,"") -> 28.26043884 | AA164: =Z164 -> 28.26043884 | AB164: =AA164 -> 28.26043884 | AC164: =AB164 -> 28.26043884 | AD164: 28.26043884 | AE164: 28.26043884 | AF164: 28.26043884 | AG164: 28.26043884 | AH164: 28.26043884 | AI164: 28.26043884 | AJ164: 28.26043884 | AK164: 28.26043884 | AL164: 28.26043884 | AM164: 28.26043884 | AN164: 28.26043884 | AO164: 28.26043884 | AP164: 28.26043884 | AQ164: 28.26043884 | AR164: 28.26043884
D165: 19 | Y165: =X164 -> 29.74783036 | Z165: =Y165 -> 29.74783036 | AA165: =IFERROR($F$18*Z165,"") -> 28.26043884 | AB165: =AA165 -> 28.26043884 | AC165: =AB165 -> 28.26043884 | AD165: =AC165 -> 28.26043884 | AE165: 28.26043884 | AF165: 28.26043884 | AG165: 28.26043884 | AH165: 28.26043884 | AI165: 28.26043884 | AJ165: 28.26043884 | AK165: 28.26043884 | AL165: 28.26043884 | AM165: 28.26043884 | AN165: 28.26043884 | AO165: 28.26043884 | AP165: 28.26043884 | AQ165: 28.26043884 | AR165: 28.26043884 | AS165: 28.26043884
D166: 20 | Z166: =Y165 -> 29.74783036 | AA166: =Z166 -> 29.74783036 | AB166: =IFERROR($F$18*AA166,"") -> 28.26043884 | AC166: =AB166 -> 28.26043884 | AD166: =AC166 -> 28.26043884 | AE166: =AD166 -> 28.26043884 | AF166: 28.26043884 | AG166: 28.26043884 | AH166: 28.26043884 | AI166: 28.26043884 | AJ166: 28.26043884 | AK166: 28.26043884 | AL166: 28.26043884 | AM166: 28.26043884 | AN166: 28.26043884 | AO166: 28.26043884 | AP166: 28.26043884 | AQ166: 28.26043884 | AR166: 28.26043884 | AS166: 28.26043884 | AT166: 28.26043884
C167: Proposal 6 | D167: 1 | F167: 47.41343496 | G167: =IF($D$36=1, IF($G$36=1,F167,""),"") -> 47.41343496 | H167: =G167 -> 47.41343496 | I167: =IFERROR($F$18*H167,"") -> 45.04276322 | J167: =I167 -> 45.04276322 | K167: 45.04276322 | L167: 45.04276322 | M167: 45.04276322 | N167: 45.04276322 | O167: 45.04276322 | P167: 45.04276322 | Q167: =P167 -> 45.04276322 | R167: =Q167 -> 45.04276322 | S167: =R167 -> 45.04276322 | T167: =S167 -> 45.04276322 | U167: =T167 -> 45.04276322 | V167: =U167 -> 45.04276322 | W167: =V167 -> 45.04276322 | X167: =W167 -> 45.04276322 | Y167: =X167 -> 45.04276322 | Z167: =Y167 -> 45.04276322 | AA167: =Z167 -> 45.04276322
D168: 2 | H168: =G167 -> 47.41343496 | I168: =H168 -> 47.41343496 | J168: =IFERROR($F$18*I168,"") -> 45.04276322 | K168: =J168 -> 45.04276322 | L168: 45.04276322 | M168: 45.04276322 | N168: 45.04276322 | O168: 45.04276322 | P168: 45.04276322 | Q168: 45.04276322 | R168: 45.04276322 | S168: 45.04276322 | T168: 45.04276322 | U168: 45.04276322 | V168: 45.04276322 | W168: 45.04276322 | X168: 45.04276322 | Y168: 45.04276322 | Z168: 45.04276322 | AA168: 45.04276322 | AB168: =AA168 -> 45.04276322
D169: 3 | I169: =H168 -> 47.41343496 | J169: =I169 -> 47.41343496 | K169: =IFERROR($F$18*J169,"") -> 45.04276322 | L169: =K169 -> 45.04276322 | M169: =L169 -> 45.04276322 | N169: =M169 -> 45.04276322 | O169: =N169 -> 45.04276322 | P169: =O169 -> 45.04276322 | Q169: 45.04276322 | R169: 45.04276322 | S169: 45.04276322 | T169: 45.04276322 | U169: 45.04276322 | V169: 45.04276322 | W169: 45.04276322 | X169: 45.04276322 | Y169: 45.04276322 | Z169: 45.04276322 | AA169: 45.04276322 | AB169: 45.04276322 | AC169: =AB169 -> 45.04276322
D170: 4 | J170: =I169 -> 47.41343496 | K170: =J170 -> 47.41343496 | L170: =IFERROR($F$18*K170,"") -> 45.04276322 | M170: =L170 -> 45.04276322 | N170: =M170 -> 45.04276322 | O170: =N170 -> 45.04276322 | P170: =O170 -> 45.04276322 | Q170: 45.04276322 | R170: 45.04276322 | S170: 45.04276322 | T170: 45.04276322 | U170: 45.04276322 | V170: 45.04276322 | W170: 45.04276322 | X170: 45.04276322 | Y170: 45.04276322 | Z170: 45.04276322 | AA170: 45.04276322 | AB170: 45.04276322 | AC170: 45.04276322 | AD170: =AC170 -> 45.04276322
D171: 5 | K171: =J170 -> 47.41343496 | L171: =K171 -> 47.41343496 | M171: =IFERROR($F$18*L171,"") -> 45.04276322 | N171: =M171 -> 45.04276322 | O171: =N171 -> 45.04276322 | P171: =O171 -> 45.04276322 | Q171: 45.04276322 | R171: 45.04276322 | S171: 45.04276322 | T171: 45.04276322 | U171: 45.04276322 | V171: 45.04276322 | W171: 45.04276322 | X171: 45.04276322 | Y171: 45.04276322 | Z171: 45.04276322 | AA171: 45.04276322 | AB171: 45.04276322 | AC171: 45.04276322 | AD171: 45.04276322 | AE171: =AD171 -> 45.04276322
D172: 6 | L172: =K171 -> 47.41343496 | M172: =L172 -> 47.41343496 | N172: =IFERROR($F$18*M172,"") -> 45.04276322 | O172: =N172 -> 45.04276322 | P172: =O172 -> 45.04276322 | Q172: 45.04276322 | R172: 45.04276322 | S172: 45.04276322 | T172: 45.04276322 | U172: 45.04276322 | V172: 45.04276322 | W172: 45.04276322 | X172: 45.04276322 | Y172: 45.04276322 | Z172: 45.04276322 | AA172: 45.04276322 | AB172: 45.04276322 | AC172: 45.04276322 | AD172: 45.04276322 | AE172: 45.04276322 | AF172: =AE172 -> 45.04276322
D173: 7 | M173: =L172 -> 47.41343496 | N173: =M173 -> 47.41343496 | O173: =IFERROR($F$18*N173,"") -> 45.04276322 | P173: =O173 -> 45.04276322 | Q173: =P173 -> 45.04276322 | R173: 45.04276322 | S173: 45.04276322 | T173: 45.04276322 | U173: 45.04276322 | V173: 45.04276322 | W173: 45.04276322 | X173: 45.04276322 | Y173: 45.04276322 | Z173: 45.04276322 | AA173: 45.04276322 | AB173: 45.04276322 | AC173: 45.04276322 | AD173: 45.04276322 | AE173: 45.04276322 | AF173: 45.04276322 | AG173: =AF173 -> 45.04276322
D174: 8 | N174: =M173 -> 47.41343496 | O174: =N174 -> 47.41343496 | P174: =IFERROR($F$18*O174,"") -> 45.04276322 | Q174: =P174 -> 45.04276322 | R174: =Q174 -> 45.04276322 | S174: 45.04276322 | T174: 45.04276322 | U174: 45.04276322 | V174: 45.04276322 | W174: 45.04276322 | X174: 45.04276322 | Y174: 45.04276322 | Z174: 45.04276322 | AA174: 45.04276322 | AB174: 45.04276322 | AC174: 45.04276322 | AD174: 45.04276322 | AE174: 45.04276322 | AF174: 45.04276322 | AG174: 45.04276322 | AH174: =AG174 -> 45.04276322
D175: 9 | O175: =N174 -> 47.41343496 | P175: =O175 -> 47.41343496 | Q175: =IFERROR($F$18*P175,"") -> 45.04276322 | R175: =Q175 -> 45.04276322 | S175: =R175 -> 45.04276322 | T175: 45.04276322 | U175: 45.04276322 | V175: 45.04276322 | W175: 45.04276322 | X175: 45.04276322 | Y175: 45.04276322 | Z175: 45.04276322 | AA175: 45.04276322 | AB175: 45.04276322 | AC175: 45.04276322 | AD175: 45.04276322 | AE175: 45.04276322 | AF175: 45.04276322 | AG175: 45.04276322 | AH175: 45.04276322 | AI175: =AH175 -> 45.04276322
D176: 10 | P176: =O175 -> 47.41343496 | Q176: =P176 -> 47.41343496 | R176: =IFERROR($F$18*Q176,"") -> 45.04276322 | S176: =R176 -> 45.04276322 | T176: =S176 -> 45.04276322 | U176: 45.04276322 | V176: 45.04276322 | W176: 45.04276322 | X176: 45.04276322 | Y176: 45.04276322 | Z176: 45.04276322 | AA176: 45.04276322 | AB176: 45.04276322 | AC176: 45.04276322 | AD176: 45.04276322 | AE176: 45.04276322 | AF176: 45.04276322 | AG176: 45.04276322 | AH176: 45.04276322 | AI176: 45.04276322 | AJ176: =AI176 -> 45.04276322
D177: 11 | Q177: =P176 -> 47.41343496 | R177: =Q177 -> 47.41343496 | S177: =IFERROR($F$18*R177,"") -> 45.04276322 | T177: =S177 -> 45.04276322 | U177: =T177 -> 45.04276322 | V177: 45.04276322 | W177: 45.04276322 | X177: 45.04276322 | Y177: 45.04276322 | Z177: 45.04276322 | AA177: 45.04276322 | AB177: 45.04276322 | AC177: 45.04276322 | AD177: 45.04276322 | AE177: 45.04276322 | AF177: 45.04276322 | AG177: 45.04276322 | AH177: 45.04276322 | AI177: 45.04276322 | AJ177: 45.04276322 | AK177: =AJ177 -> 45.04276322
D178: 12 | R178: =Q177 -> 47.41343496 | S178: =R178 -> 47.41343496 | T178: =IFERROR($F$18*S178,"") -> 45.04276322 | U178: =T178 -> 45.04276322 | V178: =U178 -> 45.04276322 | W178: 45.04276322 | X178: 45.04276322 | Y178: 45.04276322 | Z178: 45.04276322 | AA178: 45.04276322 | AB178: 45.04276322 | AC178: 45.04276322 | AD178: 45.04276322 | AE178: 45.04276322 | AF178: 45.04276322 | AG178: 45.04276322 | AH178: 45.04276322 | AI178: 45.04276322 | AJ178: 45.04276322 | AK178: 45.04276322 | AL178: =AK178 -> 45.04276322
D179: 13 | S179: =R178 -> 47.41343496 | T179: =S179 -> 47.41343496 | U179: =IFERROR($F$18*T179,"") -> 45.04276322 | V179: =U179 -> 45.04276322 | W179: =V179 -> 45.04276322 | X179: 45.04276322 | Y179: 45.04276322 | Z179: 45.04276322 | AA179: 45.04276322 | AB179: 45.04276322 | AC179: 45.04276322 | AD179: 45.04276322 | AE179: 45.04276322 | AF179: 45.04276322 | AG179: 45.04276322 | AH179: 45.04276322 | AI179: 45.04276322 | AJ179: 45.04276322 | AK179: 45.04276322 | AL179: 45.04276322 | AM179: =AL179 -> 45.04276322
D180: 14 | T180: =S179 -> 47.41343496 | U180: =T180 -> 47.41343496 | V180: =IFERROR($F$18*U180,"") -> 45.04276322 | W180: =V180 -> 45.04276322 | X180: =W180 -> 45.04276322 | Y180: 45.04276322 | Z180: 45.04276322 | AA180: 45.04276322 | AB180: 45.04276322 | AC180: 45.04276322 | AD180: 45.04276322 | AE180: 45.04276322 | AF180: 45.04276322 | AG180: 45.04276322 | AH180: 45.04276322 | AI180: 45.04276322 | AJ180: 45.04276322 | AK180: 45.04276322 | AL180: 45.04276322 | AM180: 45.04276322 | AN180: =AM180 -> 45.04276322
D181: 15 | U181: =T180 -> 47.41343496 | V181: =U181 -> 47.41343496 | W181: =IFERROR($F$18*V181,"") -> 45.04276322 | X181: =W181 -> 45.04276322 | Y181: =X181 -> 45.04276322 | Z181: 45.04276322 | AA181: 45.04276322 | AB181: 45.04276322 | AC181: 45.04276322 | AD181: 45.04276322 | AE181: 45.04276322 | AF181: 45.04276322 | AG181: 45.04276322 | AH181: 45.04276322 | AI181: 45.04276322 | AJ181: 45.04276322 | AK181: 45.04276322 | AL181: 45.04276322 | AM181: 45.04276322 | AN181: 45.04276322 | AO181: =AN181 -> 45.04276322
D182: 16 | V182: =U181 -> 47.41343496 | W182: =V182 -> 47.41343496 | X182: =IFERROR($F$18*W182,"") -> 45.04276322 | Y182: =X182 -> 45.04276322 | Z182: =Y182 -> 45.04276322 | AA182: 45.04276322 | AB182: 45.04276322 | AC182: 45.04276322 | AD182: 45.04276322 | AE182: 45.04276322 | AF182: 45.04276322 | AG182: 45.04276322 | AH182: 45.04276322 | AI182: 45.04276322 | AJ182: 45.04276322 | AK182: 45.04276322 | AL182: 45.04276322 | AM182: 45.04276322 | AN182: 45.04276322 | AO182: 45.04276322 | AP182: =AO182 -> 45.04276322
D183: 17 | W183: =V182 -> 47.41343496 | X183: =W183 -> 47.41343496 | Y183: =IFERROR($F$18*X183,"") -> 45.04276322 | Z183: =Y183 -> 45.04276322 | AA183: =Z183 -> 45.04276322 | AB183: 45.04276322 | AC183: 45.04276322 | AD183: 45.04276322 | AE183: 45.04276322 | AF183: 45.04276322 | AG183: 45.04276322 | AH183: 45.04276322 | AI183: 45.04276322 | AJ183: 45.04276322 | AK183: 45.04276322 | AL183: 45.04276322 | AM183: 45.04276322 | AN183: 45.04276322 | AO183: 45.04276322 | AP183: =AO183 -> 45.04276322 | AQ183: =AP183 -> 45.04276322
D184: 18 | X184: =W183 -> 47.41343496 | Y184: =X184 -> 47.41343496 | Z184: =IFERROR($F$18*Y184,"") -> 45.04276322 | AA184: =Z184 -> 45.04276322 | AB184: =AA184 -> 45.04276322 | AC184: 45.04276322 | AD184: 45.04276322 | AE184: 45.04276322 | AF184: 45.04276322 | AG184: 45.04276322 | AH184: 45.04276322 | AI184: 45.04276322 | AJ184: 45.04276322 | AK184: 45.04276322 | AL184: 45.04276322 | AM184: 45.04276322 | AN184: 45.04276322 | AO184: 45.04276322 | AP184: =AO184 -> 45.04276322 | AQ184: =AP184 -> 45.04276322 | AR184: =AQ184 -> 45.04276322
D185: 19 | Y185: =X184 -> 47.41343496 | Z185: =Y185 -> 47.41343496 | AA185: =IFERROR($F$18*Z185,"") -> 45.04276322 | AB185: =AA185 -> 45.04276322 | AC185: =AB185 -> 45.04276322 | AD185: 45.04276322 | AE185: 45.04276322 | AF185: 45.04276322 | AG185: 45.04276322 | AH185: 45.04276322 | AI185: 45.04276322 | AJ185: 45.04276322 | AK185: 45.04276322 | AL185: 45.04276322 | AM185: 45.04276322 | AN185: 45.04276322 | AO185: 45.04276322 | AP185: =AO185 -> 45.04276322 | AQ185: =AP185 -> 45.04276322 | AR185: =AQ185 -> 45.04276322 | AS185: =AR185 -> 45.04276322
D186: 20 | Z186: =Y185 -> 47.41343496 | AA186: =Z186 -> 47.41343496 | AB186: =IFERROR($F$18*AA186,"") -> 45.04276322 | AC186: =AB186 -> 45.04276322 | AD186: =AC186 -> 45.04276322 | AE186: 45.04276322 | AF186: 45.04276322 | AG186: 45.04276322 | AH186: 45.04276322 | AI186: 45.04276322 | AJ186: 45.04276322 | AK186: 45.04276322 | AL186: 45.04276322 | AM186: 45.04276322 | AN186: 45.04276322 | AO186: 45.04276322 | AP186: =AO186 -> 45.04276322 | AQ186: =AP186 -> 45.04276322 | AR186: =AQ186 -> 45.04276322 | AS186: =AR186 -> 45.04276322 | AT186: =AS186 -> 45.04276322
C187: Proposal 7 | D187: 1 | F187: 25.67501472 | G187: =IF($D$37=1, IF($G$37=1,F187,""),"") -> 25.67501472 | H187: =G187 -> 25.67501472 | I187: =IFERROR($F$18*H187,"") -> 24.39126399 | J187: =I187 -> 24.39126399 | K187: 24.39126399 | L187: 24.39126399 | M187: 24.39126399 | N187: 24.39126399 | O187: 24.39126399 | P187: 24.39126399 | Q187: =P187 -> 24.39126399 | R187: =Q187 -> 24.39126399 | S187: =R187 -> 24.39126399 | T187: =S187 -> 24.39126399 | U187: =T187 -> 24.39126399 | V187: =U187 -> 24.39126399 | W187: =V187 -> 24.39126399 | X187: =W187 -> 24.39126399 | Y187: =X187 -> 24.39126399 | Z187: =Y187 -> 24.39126399 | AA187: =Z187 -> 24.39126399
D188: 2 | H188: =G187 -> 25.67501472 | I188: =H188 -> 25.67501472 | J188: =IFERROR($F$18*I188,"") -> 24.39126399 | K188: =J188 -> 24.39126399 | L188: 24.39126399 | M188: 24.39126399 | N188: 24.39126399 | O188: 24.39126399 | P188: 24.39126399 | Q188: 24.39126399 | R188: 24.39126399 | S188: 24.39126399 | T188: 24.39126399 | U188: 24.39126399 | V188: 24.39126399 | W188: 24.39126399 | X188: 24.39126399 | Y188: 24.39126399 | Z188: 24.39126399 | AA188: 24.39126399 | AB188: =AA188 -> 24.39126399
D189: 3 | I189: =H188 -> 25.67501472 | J189: =I189 -> 25.67501472 | K189: =IFERROR($F$18*J189,"") -> 24.39126399 | L189: =K189 -> 24.39126399 | M189: =L189 -> 24.39126399 | N189: =M189 -> 24.39126399 | O189: =N189 -> 24.39126399 | P189: =O189 -> 24.39126399 | Q189: 24.39126399 | R189: 24.39126399 | S189: 24.39126399 | T189: 24.39126399 | U189: 24.39126399 | V189: 24.39126399 | W189: 24.39126399 | X189: 24.39126399 | Y189: 24.39126399 | Z189: 24.39126399 | AA189: 24.39126399 | AB189: 24.39126399 | AC189: =AB189 -> 24.39126399
D190: 4 | J190: =I189 -> 25.67501472 | K190: =J190 -> 25.67501472 | L190: =IFERROR($F$18*K190,"") -> 24.39126399 | M190: =L190 -> 24.39126399 | N190: =M190 -> 24.39126399 | O190: =N190 -> 24.39126399 | P190: =O190 -> 24.39126399 | Q190: 24.39126399 | R190: 24.39126399 | S190: 24.39126399 | T190: 24.39126399 | U190: 24.39126399 | V190: 24.39126399 | W190: 24.39126399 | X190: 24.39126399 | Y190: 24.39126399 | Z190: 24.39126399 | AA190: 24.39126399 | AB190: 24.39126399 | AC190: 24.39126399 | AD190: =AC190 -> 24.39126399
D191: 5 | K191: =J190 -> 25.67501472 | L191: =K191 -> 25.67501472 | M191: =IFERROR($F$18*L191,"") -> 24.39126399 | N191: =M191 -> 24.39126399 | O191: =N191 -> 24.39126399 | P191: =O191 -> 24.39126399 | Q191: 24.39126399 | R191: 24.39126399 | S191: 24.39126399 | T191: 24.39126399 | U191: 24.39126399 | V191: 24.39126399 | W191: 24.39126399 | X191: 24.39126399 | Y191: 24.39126399 | Z191: 24.39126399 | AA191: 24.39126399 | AB191: 24.39126399 | AC191: 24.39126399 | AD191: 24.39126399 | AE191: =AD191 -> 24.39126399
D192: 6 | L192: =K191 -> 25.67501472 | M192: =L192 -> 25.67501472 | N192: =IFERROR($F$18*M192,"") -> 24.39126399 | O192: =N192 -> 24.39126399 | P192: =O192 -> 24.39126399 | Q192: 24.39126399 | R192: 24.39126399 | S192: 24.39126399 | T192: 24.39126399 | U192: 24.39126399 | V192: 24.39126399 | W192: 24.39126399 | X192: 24.39126399 | Y192: 24.39126399 | Z192: 24.39126399 | AA192: 24.39126399 | AB192: 24.39126399 | AC192: 24.39126399 | AD192: 24.39126399 | AE192: 24.39126399 | AF192: =AE192 -> 24.39126399
D193: 7 | M193: =L192 -> 25.67501472 | N193: =M193 -> 25.67501472 | O193: =IFERROR($F$18*N193,"") -> 24.39126399 | P193: =O193 -> 24.39126399 | Q193: =P193 -> 24.39126399 | R193: 24.39126399 | S193: 24.39126399 | T193: 24.39126399 | U193: 24.39126399 | V193: 24.39126399 | W193: 24.39126399 | X193: 24.39126399 | Y193: 24.39126399 | Z193: 24.39126399 | AA193: 24.39126399 | AB193: 24.39126399 | AC193: 24.39126399 | AD193: 24.39126399 | AE193: 24.39126399 | AF193: 24.39126399 | AG193: =AF193 -> 24.39126399
D194: 8 | N194: =M193 -> 25.67501472 | O194: =N194 -> 25.67501472 | P194: =IFERROR($F$18*O194,"") -> 24.39126399 | Q194: =P194 -> 24.39126399 | R194: =Q194 -> 24.39126399 | S194: 24.39126399 | T194: 24.39126399 | U194: 24.39126399 | V194: 24.39126399 | W194: 24.39126399 | X194: 24.39126399 | Y194: 24.39126399 | Z194: 24.39126399 | AA194: 24.39126399 | AB194: 24.39126399 | AC194: 24.39126399 | AD194: 24.39126399 | AE194: 24.39126399 | AF194: 24.39126399 | AG194: 24.39126399 | AH194: =AG194 -> 24.39126399
D195: 9 | O195: =N194 -> 25.67501472 | P195: =O195 -> 25.67501472 | Q195: =IFERROR($F$18*P195,"") -> 24.39126399 | R195: =Q195 -> 24.39126399 | S195: =R195 -> 24.39126399 | T195: 24.39126399 | U195: 24.39126399 | V195: 24.39126399 | W195: 24.39126399 | X195: 24.39126399 | Y195: 24.39126399 | Z195: 24.39126399 | AA195: 24.39126399 | AB195: 24.39126399 | AC195: 24.39126399 | AD195: 24.39126399 | AE195: 24.39126399 | AF195: 24.39126399 | AG195: 24.39126399 | AH195: 24.39126399 | AI195: =AH195 -> 24.39126399
D196: 10 | P196: =O195 -> 25.67501472 | Q196: =P196 -> 25.67501472 | R196: =IFERROR($F$18*Q196,"") -> 24.39126399 | S196: =R196 -> 24.39126399 | T196: =S196 -> 24.39126399 | U196: 24.39126399 | V196: 24.39126399 | W196: 24.39126399 | X196: 24.39126399 | Y196: 24.39126399 | Z196: 24.39126399 | AA196: 24.39126399 | AB196: 24.39126399 | AC196: 24.39126399 | AD196: 24.39126399 | AE196: 24.39126399 | AF196: 24.39126399 | AG196: 24.39126399 | AH196: 24.39126399 | AI196: 24.39126399 | AJ196: =AI196 -> 24.39126399
D197: 11 | Q197: =P196 -> 25.67501472 | R197: =Q197 -> 25.67501472 | S197: =IFERROR($F$18*R197,"") -> 24.39126399 | T197: =S197 -> 24.39126399 | U197: =T197 -> 24.39126399 | V197: 24.39126399 | W197: 24.39126399 | X197: 24.39126399 | Y197: 24.39126399 | Z197: 24.39126399 | AA197: 24.39126399 | AB197: 24.39126399 | AC197: 24.39126399 | AD197: 24.39126399 | AE197: 24.39126399 | AF197: 24.39126399 | AG197: 24.39126399 | AH197: 24.39126399 | AI197: 24.39126399 | AJ197: 24.39126399 | AK197: =AJ197 -> 24.39126399
D198: 12 | R198: =Q197 -> 25.67501472 | S198: =R198 -> 25.67501472 | T198: =IFERROR($F$18*S198,"") -> 24.39126399 | U198: =T198 -> 24.39126399 | V198: =U198 -> 24.39126399 | W198: 24.39126399 | X198: 24.39126399 | Y198: 24.39126399 | Z198: 24.39126399 | AA198: 24.39126399 | AB198: 24.39126399 | AC198: 24.39126399 | AD198: 24.39126399 | AE198: 24.39126399 | AF198: 24.39126399 | AG198: 24.39126399 | AH198: 24.39126399 | AI198: 24.39126399 | AJ198: 24.39126399 | AK198: 24.39126399 | AL198: =AK198 -> 24.39126399
D199: 13 | S199: =R198 -> 25.67501472 | T199: =S199 -> 25.67501472 | U199: =IFERROR($F$18*T199,"") -> 24.39126399 | V199: =U199 -> 24.39126399 | W199: =V199 -> 24.39126399 | X199: 24.39126399 | Y199: 24.39126399 | Z199: 24.39126399 | AA199: 24.39126399 | AB199: 24.39126399 | AC199: 24.39126399 | AD199: 24.39126399 | AE199: 24.39126399 | AF199: 24.39126399 | AG199: 24.39126399 | AH199: 24.39126399 | AI199: 24.39126399 | AJ199: 24.39126399 | AK199: 24.39126399 | AL199: 24.39126399 | AM199: =AL199 -> 24.39126399
D200: 14 | T200: =S199 -> 25.67501472 | U200: =T200 -> 25.67501472 | V200: =IFERROR($F$18*U200,"") -> 24.39126399 | W200: =V200 -> 24.39126399 | X200: =W200 -> 24.39126399 | Y200: 24.39126399 | Z200: 24.39126399 | AA200: 24.39126399 | AB200: 24.39126399 | AC200: 24.39126399 | AD200: 24.39126399 | AE200: 24.39126399 | AF200: 24.39126399 | AG200: 24.39126399 | AH200: 24.39126399 | AI200: 24.39126399 | AJ200: 24.39126399 | AK200: 24.39126399 | AL200: 24.39126399 | AM200: 24.39126399 | AN200: =AM200 -> 24.39126399
D201: 15 | U201: =T200 -> 25.67501472 | V201: =U201 -> 25.67501472 | W201: =IFERROR($F$18*V201,"") -> 24.39126399 | X201: =W201 -> 24.39126399 | Y201: =X201 -> 24.39126399 | Z201: 24.39126399 | AA201: 24.39126399 | AB201: 24.39126399 | AC201: 24.39126399 | AD201: 24.39126399 | AE201: 24.39126399 | AF201: 24.39126399 | AG201: 24.39126399 | AH201: 24.39126399 | AI201: 24.39126399 | AJ201: 24.39126399 | AK201: 24.39126399 | AL201: 24.39126399 | AM201: 24.39126399 | AN201: 24.39126399 | AO201: =AN201 -> 24.39126399
D202: 16 | V202: =U201 -> 25.67501472 | W202: =V202 -> 25.67501472 | X202: =IFERROR($F$18*W202,"") -> 24.39126399 | Y202: =X202 -> 24.39126399 | Z202: =Y202 -> 24.39126399 | AA202: 24.39126399 | AB202: 24.39126399 | AC202: 24.39126399 | AD202: 24.39126399 | AE202: 24.39126399 | AF202: 24.39126399 | AG202: 24.39126399 | AH202: 24.39126399 | AI202: 24.39126399 | AJ202: 24.39126399 | AK202: 24.39126399 | AL202: 24.39126399 | AM202: 24.39126399 | AN202: 24.39126399 | AO202: 24.39126399 | AP202: =AO202 -> 24.39126399
D203: 17 | W203: =V202 -> 25.67501472 | X203: =W203 -> 25.67501472 | Y203: =IFERROR($F$18*X203,"") -> 24.39126399 | Z203: =Y203 -> 24.39126399 | AA203: =Z203 -> 24.39126399 | AB203: 24.39126399 | AC203: 24.39126399 | AD203: 24.39126399 | AE203: 24.39126399 | AF203: 24.39126399 | AG203: 24.39126399 | AH203: 24.39126399 | AI203: 24.39126399 | AJ203: 24.39126399 | AK203: 24.39126399 | AL203: 24.39126399 | AM203: 24.39126399 | AN203: 24.39126399 | AO203: 24.39126399 | AP203: =AO203 -> 24.39126399 | AQ203: =AP203 -> 24.39126399
D204: 18 | X204: =W203 -> 25.67501472 | Y204: =X204 -> 25.67501472 | Z204: =IFERROR($F$18*Y204,"") -> 24.39126399 | AA204: =Z204 -> 24.39126399 | AB204: =AA204 -> 24.39126399 | AC204: 24.39126399 | AD204: 24.39126399 | AE204: 24.39126399 | AF204: 24.39126399 | AG204: 24.39126399 | AH204: 24.39126399 | AI204: 24.39126399 | AJ204: 24.39126399 | AK204: 24.39126399 | AL204: 24.39126399 | AM204: 24.39126399 | AN204: 24.39126399 | AO204: 24.39126399 | AP204: =AO204 -> 24.39126399 | AQ204: =AP204 -> 24.39126399 | AR204: =AQ204 -> 24.39126399
D205: 19 | Y205: =X204 -> 25.67501472 | Z205: =Y205 -> 25.67501472 | AA205: =IFERROR($F$18*Z205,"") -> 24.39126399 | AB205: =AA205 -> 24.39126399 | AC205: =AB205 -> 24.39126399 | AD205: 24.39126399 | AE205: 24.39126399 | AF205: 24.39126399 | AG205: 24.39126399 | AH205: 24.39126399 | AI205: 24.39126399 | AJ205: 24.39126399 | AK205: 24.39126399 | AL205: 24.39126399 | AM205: 24.39126399 | AN205: 24.39126399 | AO205: 24.39126399 | AP205: =AO205 -> 24.39126399 | AQ205: =AP205 -> 24.39126399 | AR205: =AQ205 -> 24.39126399 | AS205: =AR205 -> 24.39126399
D206: 20 | Z206: =Y205 -> 25.67501472 | AA206: =Z206 -> 25.67501472 | AB206: =IFERROR($F$18*AA206,"") -> 24.39126399 | AC206: =AB206 -> 24.39126399 | AD206: =AC206 -> 24.39126399 | AE206: 24.39126399 | AF206: 24.39126399 | AG206: 24.39126399 | AH206: 24.39126399 | AI206: 24.39126399 | AJ206: 24.39126399 | AK206: 24.39126399 | AL206: 24.39126399 | AM206: 24.39126399 | AN206: 24.39126399 | AO206: 24.39126399 | AP206: =AO206 -> 24.39126399 | AQ206: =AP206 -> 24.39126399 | AR206: =AQ206 -> 24.39126399 | AS206: =AR206 -> 24.39126399 | AT206: =AS206 -> 24.39126399
C207: Proposal 8 | D207: 1 | F207: 21.79598122 | G207: =IF($D$38=1, IF($G$38=1,F207,""),"") -> 21.79598122 | H207: =G207 -> 21.79598122 | I207: =IFERROR($F$18*H207,"") -> 20.70618215 | J207: =I207 -> 20.70618215 | K207: 20.70618215 | L207: 20.70618215 | M207: 20.70618215 | N207: 20.70618215 | O207: 20.70618215 | P207: 20.70618215 | Q207: =P207 -> 20.70618215 | R207: =Q207 -> 20.70618215 | S207: =R207 -> 20.70618215 | T207: =S207 -> 20.70618215 | U207: =T207 -> 20.70618215 | V207: =U207 -> 20.70618215 | W207: =V207 -> 20.70618215 | X207: =W207 -> 20.70618215 | Y207: =X207 -> 20.70618215 | Z207: =Y207 -> 20.70618215 | AA207: =Z207 -> 20.70618215
D208: 2 | H208: =G207 -> 21.79598122 | I208: =H208 -> 21.79598122 | J208: =IFERROR($F$18*I208,"") -> 20.70618215 | K208: =J208 -> 20.70618215 | L208: 20.70618215 | M208: 20.70618215 | N208: 20.70618215 | O208: 20.70618215 | P208: 20.70618215 | Q208: 20.70618215 | R208: 20.70618215 | S208: 20.70618215 | T208: 20.70618215 | U208: 20.70618215 | V208: 20.70618215 | W208: 20.70618215 | X208: 20.70618215 | Y208: 20.70618215 | Z208: 20.70618215 | AA208: 20.70618215 | AB208: =AA208 -> 20.70618215
D209: 3 | I209: =H208 -> 21.79598122 | J209: =I209 -> 21.79598122 | K209: =IFERROR($F$18*J209,"") -> 20.70618215 | L209: =K209 -> 20.70618215 | M209: =L209 -> 20.70618215 | N209: =M209 -> 20.70618215 | O209: =N209 -> 20.70618215 | P209: =O209 -> 20.70618215 | Q209: 20.70618215 | R209: 20.70618215 | S209: 20.70618215 | T209: 20.70618215 | U209: 20.70618215 | V209: 20.70618215 | W209: 20.70618215 | X209: 20.70618215 | Y209: 20.70618215 | Z209: 20.70618215 | AA209: 20.70618215 | AB209: 20.70618215 | AC209: =AB209 -> 20.70618215
... 552 more rows

Sheet Earnings
K1: Last updated: 12/16/2014
B2: Georgia II: Industry-led Skills and Workforce Development Project
B3: Earnings Projections
B5: =IF('ERR & Sensitivity Analysis'!I10="N","NOTE: Current calculations are based on USER INPUT and are not the original MCC estimates.",IF('ERR & Sensitivity Analysis'!I14="N", "NOTE: Current calculations are based on USER INPUT and are not the original MCC estimates.","")) -> 
A6: Notes | B6: Key Assumptions | L6: Base Case Scenario | M6: Unit
A7: 1, 2 | B7: 2010 wage for "plant and machine operators and assemblers" with elementary vocational school education | L7: ='ERR & Sensitivity Analysis'!D13 -> 319 | M7: lari/month
A8: 1, 3 | B8: 2010 wage for "plant and machine operators and assemblers" with higher education | L8: =('ERR & Sensitivity Analysis'!D14*319) + 319 -> 394.922 | M8: lari/month
A9: 4, 5 | B9: Annual inflation rate 2010 to 2013 | L9: 0.02
A10: 6 | B10: 2013 wage for "plant and machine operators and assemblers" with elementary vocational school education | L10: =L7*(1+$L$9)^3 -> 338.525352 | M10: lari/month
A11: 6 | B11: 2013 wage for "plant and machine operators and assemblers" with higher education | L11: =L8*(1+$L$9)^3 -> 419.0943858 | M11: lari/month
A12: 7 | B12: Annual real income growth (projected GDP/capita growth rate) | L12: 0.04821028522
B13: Exchange rate | L13: ='ERR & Sensitivity Analysis'!D17 -> 1.6
A14: 8 | B14: Employment rate, graduates of the improved TVET programs | L14: 0.85
A15: 9 | B15: Employment rate, graduates of elementary vocational schools | L15: 0.76
A16: 10 | B16: Annualized earnings, 2013, adjusted for probability of having employment, MCC-supported programs | L16: =L11*12/exrate*L14 -> 2671.726709
A17: 10 | B17: Annualized earnings, 2013, adjusted for probability of having employment, elementary sec school grads | L17: =L10*12/exrate*L15 -> 1929.594506
B19: Counterfactual annual earnings in US$/year:
D20: 2014 | E20: =D20+1 -> 2015 | F20: 2016 | G20: 2017 | H20: 2018 | I20: 2019 | J20: 2020 | K20: 2021 | L20: 2022 | M20: 2023 | N20: 2024 | O20: 2025 | P20: 2026 | Q20: 2027 | R20: 2028 | S20: 2029 | T20: 2030 | U20: 2031 | V20: 2032 | W20: 2033 | X20: 2034 | Y20: 2035 | Z20: 2036 | AA20: 2037 | AB20: 2038 | AC20: 2039 | AD20: 2040 | AE20: 2041 | AF20: 2042 | AG20: 2043 | AH20: 2044 | AI20: 2045 | AJ20: 2046 | AK20: =AJ20+1 -> 2047 | AL20: 2048 | AM20: 2049 | AN20: 2050 | AO20: 2051 | AP20: 2052 | AQ20: =AP20+1 -> 2053 | AR20: =AQ20+1 -> 2054
C21: Cohort | D21: 1 | E21: 2 | F21: 3 | G21: 4 | H21: 5 | I21: 6 | J21: 7 | K21: 8 | L21: 9 | M21: 10 | N21: 11 | O21: 12 | P21: 13 | Q21: 14 | R21: 15 | S21: 16 | T21: 17 | U21: 18 | V21: 19 | W21: 20 | X21: =W21+1 -> 21 | Y21: 22 | Z21: 23 | AA21: 24 | AB21: 25 | AC21: 26 | AD21: 27 | AE21: 28 | AF21: 29 | AG21: 30 | AH21: 31 | AI21: 32 | AJ21: 33 | AK21: 34 | AL21: 35 | AM21: 36 | AN21: 37 | AO21: 38 | AP21: 39 | AQ21: =AP21+1 -> 40 | AR21: =AQ21+1 -> 41
C22: 1st | G22: =Cohorts!I731*(Earnings!$L$17*(1+Earnings!$L$12)^F$21) -> 402311.4181 | H22: =Cohorts!J731*(Earnings!$L$17*(1+Earnings!$L$12)^G$21) -> 771738.1143 | I22: =Cohorts!K731*(Earnings!$L$17*(1+Earnings!$L$12)^H$21) -> 808943.8289 | J22: =Cohorts!L731*(Earnings!$L$17*(1+Earnings!$L$12)^I$21) -> 847943.2417 | K22: =Cohorts!M731*(Earnings!$L$17*(1+Earnings!$L$12)^J$21) -> 888822.8272 | L22: =Cohorts!N731*(Earnings!$L$17*(1+Earnings!$L$12)^K$21) -> 931673.2292 | M22: =Cohorts!O731*(Earnings!$L$17*(1+Earnings!$L$12)^L$21) -> 976589.4613 | N22: =Cohorts!P731*(Earnings!$L$17*(1+Earnings!$L$12)^M$21) -> 1023671.118 | O22: =Cohorts!Q731*(Earnings!$L$17*(1+Earnings!$L$12)^N$21) -> 1073022.594 | P22: =Cohorts!R731*(Earnings!$L$17*(1+Earnings!$L$12)^O$21) -> 1124753.32 | Q22: =Cohorts!S731*(Earnings!$L$17*(1+Earnings!$L$12)^P$21) -> 1178977.998 | R22: =Cohorts!T731*(Earnings!$L$17*(1+Earnings!$L$12)^Q$21) -> 1235816.864 | S22: =Cohorts!U731*(Earnings!$L$17*(1+Earnings!$L$12)^R$21) -> 1295395.947 | T22: =Cohorts!V731*(Earnings!$L$17*(1+Earnings!$L$12)^S$21) -> 1357847.355 | U22: =Cohorts!W731*(Earnings!$L$17*(1+Earnings!$L$12)^T$21) -> 1423309.563 | V22: =Cohorts!X731*(Earnings!$L$17*(1+Earnings!$L$12)^U$21) -> 1491927.723 | W22: =Cohorts!Y731*(Earnings!$L$17*(1+Earnings!$L$12)^V$21) -> 1563853.984 | X22: =Cohorts!Z731*(Earnings!$L$17*(1+Earnings!$L$12)^W$21) -> 1639247.831 | Y22: =Cohorts!AA731*(Earnings!$L$17*(1+Earnings!$L$12)^X$21) -> 1718276.436
C23: 2nd | H23: =Cohorts!J732*(Earnings!$L$17*(1+Earnings!$L$12)^G$47) -> 421706.9663 | I23: =Cohorts!K732*(Earnings!$L$17*(1+Earnings!$L$12)^H$47) -> 808943.8289 | J23: =Cohorts!L732*(Earnings!$L$17*(1+Earnings!$L$12)^I$47) -> 847943.2417 | K23: =Cohorts!M732*(Earnings!$L$17*(1+Earnings!$L$12)^J$47) -> 888822.8272 | L23: =Cohorts!N732*(Earnings!$L$17*(1+Earnings!$L$12)^K$47) -> 931673.2292 | M23: =Cohorts!O732*(Earnings!$L$17*(1+Earnings!$L$12)^L$47) -> 976589.4613 | N23: =Cohorts!P732*(Earnings!$L$17*(1+Earnings!$L$12)^M$47) -> 1023671.118 | O23: =Cohorts!Q732*(Earnings!$L$17*(1+Earnings!$L$12)^N$47) -> 1073022.594 | P23: =Cohorts!R732*(Earnings!$L$17*(1+Earnings!$L$12)^O$47) -> 1124753.32 | Q23: =Cohorts!S732*(Earnings!$L$17*(1+Earnings!$L$12)^P$47) -> 1178977.998 | R23: =Cohorts!T732*(Earnings!$L$17*(1+Earnings!$L$12)^Q$47) -> 1235816.864 | S23: =Cohorts!U732*(Earnings!$L$17*(1+Earnings!$L$12)^R$47) -> 1295395.947 | T23: =Cohorts!V732*(Earnings!$L$17*(1+Earnings!$L$12)^S$47) -> 1357847.355 | U23: =Cohorts!W732*(Earnings!$L$17*(1+Earnings!$L$12)^T$47) -> 1423309.563 | V23: =Cohorts!X732*(Earnings!$L$17*(1+Earnings!$L$12)^U$47) -> 1491927.723 | W23: =Cohorts!Y732*(Earnings!$L$17*(1+Earnings!$L$12)^V$47) -> 1563853.984 | X23: =Cohorts!Z732*(Earnings!$L$17*(1+Earnings!$L$12)^W$47) -> 1639247.831 | Y23: =Cohorts!AA732*(Earnings!$L$17*(1+Earnings!$L$12)^X$47) -> 1718276.436 | Z23: =Cohorts!AB732*(Earnings!$L$17*(1+Earnings!$L$12)^Y$47) -> 1801115.034
C24: 3rd | I24: =Cohorts!K733*(Earnings!$L$17*(1+Earnings!$L$12)^H$47) -> 442037.5795 | J24: =Cohorts!L733*(Earnings!$L$17*(1+Earnings!$L$12)^I$47) -> 847943.2417 | K24: =Cohorts!M733*(Earnings!$L$17*(1+Earnings!$L$12)^J$47) -> 888822.8272 | L24: =Cohorts!N733*(Earnings!$L$17*(1+Earnings!$L$12)^K$47) -> 931673.2292 | M24: =Cohorts!O733*(Earnings!$L$17*(1+Earnings!$L$12)^L$47) -> 976589.4613 | N24: =Cohorts!P733*(Earnings!$L$17*(1+Earnings!$L$12)^M$47) -> 1023671.118 | O24: =Cohorts!Q733*(Earnings!$L$17*(1+Earnings!$L$12)^N$47) -> 1073022.594 | P24: =Cohorts!R733*(Earnings!$L$17*(1+Earnings!$L$12)^O$47) -> 1124753.32 | Q24: =Cohorts!S733*(Earnings!$L$17*(1+Earnings!$L$12)^P$47) -> 1178977.998 | R24: =Cohorts!T733*(Earnings!$L$17*(1+Earnings!$L$12)^Q$47) -> 1235816.864 | S24: =Cohorts!U733*(Earnings!$L$17*(1+Earnings!$L$12)^R$47) -> 1295395.947 | T24: =Cohorts!V733*(Earnings!$L$17*(1+Earnings!$L$12)^S$47) -> 1357847.355 | U24: =Cohorts!W733*(Earnings!$L$17*(1+Earnings!$L$12)^T$47) -> 1423309.563 | V24: =Cohorts!X733*(Earnings!$L$17*(1+Earnings!$L$12)^U$47) -> 1491927.723 | W24: =Cohorts!Y733*(Earnings!$L$17*(1+Earnings!$L$12)^V$47) -> 1563853.984 | X24: =Cohorts!Z733*(Earnings!$L$17*(1+Earnings!$L$12)^W$47) -> 1639247.831 | Y24: =Cohorts!AA733*(Earnings!$L$17*(1+Earnings!$L$12)^X$47) -> 1718276.436 | Z24: =Cohorts!AB733*(Earnings!$L$17*(1+Earnings!$L$12)^Y$47) -> 1801115.034 | AA24: =Cohorts!AC733*(Earnings!$L$17*(1+Earnings!$L$12)^Z$47) -> 1887947.303
C25: 4th | J25: =Cohorts!L734*(Earnings!$L$17*(1+Earnings!$L$12)^I$47) -> 463348.3372 | K25: =Cohorts!M734*(Earnings!$L$17*(1+Earnings!$L$12)^J$47) -> 888822.8272 | L25: =Cohorts!N734*(Earnings!$L$17*(1+Earnings!$L$12)^K$47) -> 931673.2292 | M25: =Cohorts!O734*(Earnings!$L$17*(1+Earnings!$L$12)^L$47) -> 976589.4613 | N25: =Cohorts!P734*(Earnings!$L$17*(1+Earnings!$L$12)^M$47) -> 1023671.118 | O25: =Cohorts!Q734*(Earnings!$L$17*(1+Earnings!$L$12)^N$47) -> 1073022.594 | P25: =Cohorts!R734*(Earnings!$L$17*(1+Earnings!$L$12)^O$47) -> 1124753.32 | Q25: =Cohorts!S734*(Earnings!$L$17*(1+Earnings!$L$12)^P$47) -> 1178977.998 | R25: =Cohorts!T734*(Earnings!$L$17*(1+Earnings!$L$12)^Q$47) -> 1235816.864 | S25: =Cohorts!U734*(Earnings!$L$17*(1+Earnings!$L$12)^R$47) -> 1295395.947 | T25: =Cohorts!V734*(Earnings!$L$17*(1+Earnings!$L$12)^S$47) -> 1357847.355 | U25: =Cohorts!W734*(Earnings!$L$17*(1+Earnings!$L$12)^T$47) -> 1423309.563 | V25: =Cohorts!X734*(Earnings!$L$17*(1+Earnings!$L$12)^U$47) -> 1491927.723 | W25: =Cohorts!Y734*(Earnings!$L$17*(1+Earnings!$L$12)^V$47) -> 1563853.984 | X25: =Cohorts!Z734*(Earnings!$L$17*(1+Earnings!$L$12)^W$47) -> 1639247.831 | Y25: =Cohorts!AA734*(Earnings!$L$17*(1+Earnings!$L$12)^X$47) -> 1718276.436 | Z25: =Cohorts!AB734*(Earnings!$L$17*(1+Earnings!$L$12)^Y$47) -> 1801115.034 | AA25: =Cohorts!AC734*(Earnings!$L$17*(1+Earnings!$L$12)^Z$47) -> 1887947.303 | AB25: =Cohorts!AD734*(Earnings!$L$17*(1+Earnings!$L$12)^AA$47) -> 1978965.781
C26: 5th | K26: =Cohorts!M735*(Earnings!$L$17*(1+Earnings!$L$12)^J$47) -> 485686.4927 | L26: =Cohorts!N735*(Earnings!$L$17*(1+Earnings!$L$12)^K$47) -> 931673.2292 | M26: =Cohorts!O735*(Earnings!$L$17*(1+Earnings!$L$12)^L$47) -> 976589.4613 | N26: =Cohorts!P735*(Earnings!$L$17*(1+Earnings!$L$12)^M$47) -> 1023671.118 | O26: =Cohorts!Q735*(Earnings!$L$17*(1+Earnings!$L$12)^N$47) -> 1073022.594 | P26: =Cohorts!R735*(Earnings!$L$17*(1+Earnings!$L$12)^O$47) -> 1124753.32 | Q26: =Cohorts!S735*(Earnings!$L$17*(1+Earnings!$L$12)^P$47) -> 1178977.998 | R26: =Cohorts!T735*(Earnings!$L$17*(1+Earnings!$L$12)^Q$47) -> 1235816.864 | S26: =Cohorts!U735*(Earnings!$L$17*(1+Earnings!$L$12)^R$47) -> 1295395.947 | T26: =Cohorts!V735*(Earnings!$L$17*(1+Earnings!$L$12)^S$47) -> 1357847.355 | U26: =Cohorts!W735*(Earnings!$L$17*(1+Earnings!$L$12)^T$47) -> 1423309.563 | V26: =Cohorts!X735*(Earnings!$L$17*(1+Earnings!$L$12)^U$47) -> 1491927.723 | W26: =Cohorts!Y735*(Earnings!$L$17*(1+Earnings!$L$12)^V$47) -> 1563853.984 | X26: =Cohorts!Z735*(Earnings!$L$17*(1+Earnings!$L$12)^W$47) -> 1639247.831 | Y26: =Cohorts!AA735*(Earnings!$L$17*(1+Earnings!$L$12)^X$47) -> 1718276.436 | Z26: =Cohorts!AB735*(Earnings!$L$17*(1+Earnings!$L$12)^Y$47) -> 1801115.034 | AA26: =Cohorts!AC735*(Earnings!$L$17*(1+Earnings!$L$12)^Z$47) -> 1887947.303 | AB26: =Cohorts!AD735*(Earnings!$L$17*(1+Earnings!$L$12)^AA$47) -> 1978965.781 | AC26: =Cohorts!AE735*(Earnings!$L$17*(1+Earnings!$L$12)^AB$47) -> 2074372.286
C27: 6th | L27: =Cohorts!N736*(Earnings!$L$17*(1+Earnings!$L$12)^K$47) -> 509101.5771 | M27: =Cohorts!O736*(Earnings!$L$17*(1+Earnings!$L$12)^L$47) -> 976589.4613 | N27: =Cohorts!P736*(Earnings!$L$17*(1+Earnings!$L$12)^M$47) -> 1023671.118 | O27: =Cohorts!Q736*(Earnings!$L$17*(1+Earnings!$L$12)^N$47) -> 1073022.594 | P27: =Cohorts!R736*(Earnings!$L$17*(1+Earnings!$L$12)^O$47) -> 1124753.32 | Q27: =Cohorts!S736*(Earnings!$L$17*(1+Earnings!$L$12)^P$47) -> 1178977.998 | R27: =Cohorts!T736*(Earnings!$L$17*(1+Earnings!$L$12)^Q$47) -> 1235816.864 | S27: =Cohorts!U736*(Earnings!$L$17*(1+Earnings!$L$12)^R$47) -> 1295395.947 | T27: =Cohorts!V736*(Earnings!$L$17*(1+Earnings!$L$12)^S$47) -> 1357847.355 | U27: =Cohorts!W736*(Earnings!$L$17*(1+Earnings!$L$12)^T$47) -> 1423309.563 | V27: =Cohorts!X736*(Earnings!$L$17*(1+Earnings!$L$12)^U$47) -> 1491927.723 | W27: =Cohorts!Y736*(Earnings!$L$17*(1+Earnings!$L$12)^V$47) -> 1563853.984 | X27: =Cohorts!Z736*(Earnings!$L$17*(1+Earnings!$L$12)^W$47) -> 1639247.831 | Y27: =Cohorts!AA736*(Earnings!$L$17*(1+Earnings!$L$12)^X$47) -> 1718276.436 | Z27: =Cohorts!AB736*(Earnings!$L$17*(1+Earnings!$L$12)^Y$47) -> 1801115.034 | AA27: =Cohorts!AC736*(Earnings!$L$17*(1+Earnings!$L$12)^Z$47) -> 1887947.303 | AB27: =Cohorts!AD736*(Earnings!$L$17*(1+Earnings!$L$12)^AA$47) -> 1978965.781 | AC27: =Cohorts!AE736*(Earnings!$L$17*(1+Earnings!$L$12)^AB$47) -> 2074372.286 | AD27: =Cohorts!AF736*(Earnings!$L$17*(1+Earnings!$L$12)^AC$47) -> 2174378.365
C28: 7th | M28: =Cohorts!O737*(Earnings!$L$17*(1+Earnings!$L$12)^L$47) -> 533645.5093 | N28: =Cohorts!P737*(Earnings!$L$17*(1+Earnings!$L$12)^M$47) -> 1023671.118 | O28: =Cohorts!Q737*(Earnings!$L$17*(1+Earnings!$L$12)^N$47) -> 1073022.594 | P28: =Cohorts!R737*(Earnings!$L$17*(1+Earnings!$L$12)^O$47) -> 1124753.32 | Q28: =Cohorts!S737*(Earnings!$L$17*(1+Earnings!$L$12)^P$47) -> 1178977.998 | R28: =Cohorts!T737*(Earnings!$L$17*(1+Earnings!$L$12)^Q$47) -> 1235816.864 | S28: =Cohorts!U737*(Earnings!$L$17*(1+Earnings!$L$12)^R$47) -> 1295395.947 | T28: =Cohorts!V737*(Earnings!$L$17*(1+Earnings!$L$12)^S$47) -> 1357847.355 | U28: =Cohorts!W737*(Earnings!$L$17*(1+Earnings!$L$12)^T$47) -> 1423309.563 | V28: =Cohorts!X737*(Earnings!$L$17*(1+Earnings!$L$12)^U$47) -> 1491927.723 | W28: =Cohorts!Y737*(Earnings!$L$17*(1+Earnings!$L$12)^V$47) -> 1563853.984 | X28: =Cohorts!Z737*(Earnings!$L$17*(1+Earnings!$L$12)^W$47) -> 1639247.831 | Y28: =Cohorts!AA737*(Earnings!$L$17*(1+Earnings!$L$12)^X$47) -> 1718276.436 | Z28: =Cohorts!AB737*(Earnings!$L$17*(1+Earnings!$L$12)^Y$47) -> 1801115.034 | AA28: =Cohorts!AC737*(Earnings!$L$17*(1+Earnings!$L$12)^Z$47) -> 1887947.303 | AB28: =Cohorts!AD737*(Earnings!$L$17*(1+Earnings!$L$12)^AA$47) -> 1978965.781 | AC28: =Cohorts!AE737*(Earnings!$L$17*(1+Earnings!$L$12)^AB$47) -> 2074372.286 | AD28: =Cohorts!AF737*(Earnings!$L$17*(1+Earnings!$L$12)^AC$47) -> 2174378.365 | AE28: =Cohorts!AG737*(Earnings!$L$17*(1+Earnings!$L$12)^AD$47) -> 2279205.766
C29: 8th | N29: =Cohorts!P738*(Earnings!$L$17*(1+Earnings!$L$12)^M$47) -> 559372.7115 | O29: =Cohorts!Q738*(Earnings!$L$17*(1+Earnings!$L$12)^N$47) -> 1073022.594 | P29: =Cohorts!R738*(Earnings!$L$17*(1+Earnings!$L$12)^O$47) -> 1124753.32 | Q29: =Cohorts!S738*(Earnings!$L$17*(1+Earnings!$L$12)^P$47) -> 1178977.998 | R29: =Cohorts!T738*(Earnings!$L$17*(1+Earnings!$L$12)^Q$47) -> 1235816.864 | S29: =Cohorts!U738*(Earnings!$L$17*(1+Earnings!$L$12)^R$47) -> 1295395.947 | T29: =Cohorts!V738*(Earnings!$L$17*(1+Earnings!$L$12)^S$47) -> 1357847.355 | U29: =Cohorts!W738*(Earnings!$L$17*(1+Earnings!$L$12)^T$47) -> 1423309.563 | V29: =Cohorts!X738*(Earnings!$L$17*(1+Earnings!$L$12)^U$47) -> 1491927.723 | W29: =Cohorts!Y738*(Earnings!$L$17*(1+Earnings!$L$12)^V$47) -> 1563853.984 | X29: =Cohorts!Z738*(Earnings!$L$17*(1+Earnings!$L$12)^W$47) -> 1639247.831 | Y29: =Cohorts!AA738*(Earnings!$L$17*(1+Earnings!$L$12)^X$47) -> 1718276.436 | Z29: =Cohorts!AB738*(Earnings!$L$17*(1+Earnings!$L$12)^Y$47) -> 1801115.034 | AA29: =Cohorts!AC738*(Earnings!$L$17*(1+Earnings!$L$12)^Z$47) -> 1887947.303 | AB29: =Cohorts!AD738*(Earnings!$L$17*(1+Earnings!$L$12)^AA$47) -> 1978965.781 | AC29: =Cohorts!AE738*(Earnings!$L$17*(1+Earnings!$L$12)^AB$47) -> 2074372.286 | AD29: =Cohorts!AF738*(Earnings!$L$17*(1+Earnings!$L$12)^AC$47) -> 2174378.365 | AE29: =Cohorts!AG738*(Earnings!$L$17*(1+Earnings!$L$12)^AD$47) -> 2279205.766 | AF29: =Cohorts!AH738*(Earnings!$L$17*(1+Earnings!$L$12)^AE$47) -> 2389086.926
C30: 9th | O30: =Cohorts!Q739*(Earnings!$L$17*(1+Earnings!$L$12)^N$47) -> 586340.2295 | P30: =Cohorts!R739*(Earnings!$L$17*(1+Earnings!$L$12)^O$47) -> 1124753.32 | Q30: =Cohorts!S739*(Earnings!$L$17*(1+Earnings!$L$12)^P$47) -> 1178977.998 | R30: =Cohorts!T739*(Earnings!$L$17*(1+Earnings!$L$12)^Q$47) -> 1235816.864 | S30: =Cohorts!U739*(Earnings!$L$17*(1+Earnings!$L$12)^R$47) -> 1295395.947 | T30: =Cohorts!V739*(Earnings!$L$17*(1+Earnings!$L$12)^S$47) -> 1357847.355 | U30: =Cohorts!W739*(Earnings!$L$17*(1+Earnings!$L$12)^T$47) -> 1423309.563 | V30: =Cohorts!X739*(Earnings!$L$17*(1+Earnings!$L$12)^U$47) -> 1491927.723 | W30: =Cohorts!Y739*(Earnings!$L$17*(1+Earnings!$L$12)^V$47) -> 1563853.984 | X30: =Cohorts!Z739*(Earnings!$L$17*(1+Earnings!$L$12)^W$47) -> 1639247.831 | Y30: =Cohorts!AA739*(Earnings!$L$17*(1+Earnings!$L$12)^X$47) -> 1718276.436 | Z30: =Cohorts!AB739*(Earnings!$L$17*(1+Earnings!$L$12)^Y$47) -> 1801115.034 | AA30: =Cohorts!AC739*(Earnings!$L$17*(1+Earnings!$L$12)^Z$47) -> 1887947.303 | AB30: =Cohorts!AD739*(Earnings!$L$17*(1+Earnings!$L$12)^AA$47) -> 1978965.781 | AC30: =Cohorts!AE739*(Earnings!$L$17*(1+Earnings!$L$12)^AB$47) -> 2074372.286 | AD30: =Cohorts!AF739*(Earnings!$L$17*(1+Earnings!$L$12)^AC$47) -> 2174378.365 | AE30: =Cohorts!AG739*(Earnings!$L$17*(1+Earnings!$L$12)^AD$47) -> 2279205.766 | AF30: =Cohorts!AH739*(Earnings!$L$17*(1+Earnings!$L$12)^AE$47) -> 2389086.926 | AG30: =Cohorts!AI739*(Earnings!$L$17*(1+Earnings!$L$12)^AF$47) -> 2504265.489
C31: 10th | P31: =Cohorts!R740*(Earnings!$L$17*(1+Earnings!$L$12)^O$47) -> 614607.8592 | Q31: =Cohorts!S740*(Earnings!$L$17*(1+Earnings!$L$12)^P$47) -> 1178977.998 | R31: =Cohorts!T740*(Earnings!$L$17*(1+Earnings!$L$12)^Q$47) -> 1235816.864 | S31: =Cohorts!U740*(Earnings!$L$17*(1+Earnings!$L$12)^R$47) -> 1295395.947 | T31: =Cohorts!V740*(Earnings!$L$17*(1+Earnings!$L$12)^S$47) -> 1357847.355 | U31: =Cohorts!W740*(Earnings!$L$17*(1+Earnings!$L$12)^T$47) -> 1423309.563 | V31: =Cohorts!X740*(Earnings!$L$17*(1+Earnings!$L$12)^U$47) -> 1491927.723 | W31: =Cohorts!Y740*(Earnings!$L$17*(1+Earnings!$L$12)^V$47) -> 1563853.984 | X31: =Cohorts!Z740*(Earnings!$L$17*(1+Earnings!$L$12)^W$47) -> 1639247.831 | Y31: =Cohorts!AA740*(Earnings!$L$17*(1+Earnings!$L$12)^X$47) -> 1718276.436 | Z31: =Cohorts!AB740*(Earnings!$L$17*(1+Earnings!$L$12)^Y$47) -> 1801115.034 | AA31: =Cohorts!AC740*(Earnings!$L$17*(1+Earnings!$L$12)^Z$47) -> 1887947.303 | AB31: =Cohorts!AD740*(Earnings!$L$17*(1+Earnings!$L$12)^AA$47) -> 1978965.781 | AC31: =Cohorts!AE740*(Earnings!$L$17*(1+Earnings!$L$12)^AB$47) -> 2074372.286 | AD31: =Cohorts!AF740*(Earnings!$L$17*(1+Earnings!$L$12)^AC$47) -> 2174378.365 | AE31: =Cohorts!AG740*(Earnings!$L$17*(1+Earnings!$L$12)^AD$47) -> 2279205.766 | AF31: =Cohorts!AH740*(Earnings!$L$17*(1+Earnings!$L$12)^AE$47) -> 2389086.926 | AG31: =Cohorts!AI740*(Earnings!$L$17*(1+Earnings!$L$12)^AF$47) -> 2504265.489 | AH31: =Cohorts!AJ740*(Earnings!$L$17*(1+Earnings!$L$12)^AG$47) -> 2624996.842
C32: 11th | Q32: =Cohorts!S741*(Earnings!$L$17*(1+Earnings!$L$12)^P$47) -> 644238.2794 | R32: =Cohorts!T741*(Earnings!$L$17*(1+Earnings!$L$12)^Q$47) -> 1235816.864 | S32: =Cohorts!U741*(Earnings!$L$17*(1+Earnings!$L$12)^R$47) -> 1295395.947 | T32: =Cohorts!V741*(Earnings!$L$17*(1+Earnings!$L$12)^S$47) -> 1357847.355 | U32: =Cohorts!W741*(Earnings!$L$17*(1+Earnings!$L$12)^T$47) -> 1423309.563 | V32: =Cohorts!X741*(Earnings!$L$17*(1+Earnings!$L$12)^U$47) -> 1491927.723 | W32: =Cohorts!Y741*(Earnings!$L$17*(1+Earnings!$L$12)^V$47) -> 1563853.984 | X32: =Cohorts!Z741*(Earnings!$L$17*(1+Earnings!$L$12)^W$47) -> 1639247.831 | Y32: =Cohorts!AA741*(Earnings!$L$17*(1+Earnings!$L$12)^X$47) -> 1718276.436 | Z32: =Cohorts!AB741*(Earnings!$L$17*(1+Earnings!$L$12)^Y$47) -> 1801115.034 | AA32: =Cohorts!AC741*(Earnings!$L$17*(1+Earnings!$L$12)^Z$47) -> 1887947.303 | AB32: =Cohorts!AD741*(Earnings!$L$17*(1+Earnings!$L$12)^AA$47) -> 1978965.781 | AC32: =Cohorts!AE741*(Earnings!$L$17*(1+Earnings!$L$12)^AB$47) -> 2074372.286 | AD32: =Cohorts!AF741*(Earnings!$L$17*(1+Earnings!$L$12)^AC$47) -> 2174378.365 | AE32: =Cohorts!AG741*(Earnings!$L$17*(1+Earnings!$L$12)^AD$47) -> 2279205.766 | AF32: =Cohorts!AH741*(Earnings!$L$17*(1+Earnings!$L$12)^AE$47) -> 2389086.926 | AG32: =Cohorts!AI741*(Earnings!$L$17*(1+Earnings!$L$12)^AF$47) -> 2504265.489 | AH32: =Cohorts!AJ741*(Earnings!$L$17*(1+Earnings!$L$12)^AG$47) -> 2624996.842 | AI32: =Cohorts!AK741*(Earnings!$L$17*(1+Earnings!$L$12)^AH$47) -> 2751548.689
C33: 12th | R33: =Cohorts!T742*(Earnings!$L$17*(1+Earnings!$L$12)^Q$47) -> 675297.1906 | S33: =Cohorts!U742*(Earnings!$L$17*(1+Earnings!$L$12)^R$47) -> 1295395.947 | T33: =Cohorts!V742*(Earnings!$L$17*(1+Earnings!$L$12)^S$47) -> 1357847.355 | U33: =Cohorts!W742*(Earnings!$L$17*(1+Earnings!$L$12)^T$47) -> 1423309.563 | V33: =Cohorts!X742*(Earnings!$L$17*(1+Earnings!$L$12)^U$47) -> 1491927.723 | W33: =Cohorts!Y742*(Earnings!$L$17*(1+Earnings!$L$12)^V$47) -> 1563853.984 | X33: =Cohorts!Z742*(Earnings!$L$17*(1+Earnings!$L$12)^W$47) -> 1639247.831 | Y33: =Cohorts!AA742*(Earnings!$L$17*(1+Earnings!$L$12)^X$47) -> 1718276.436 | Z33: =Cohorts!AB742*(Earnings!$L$17*(1+Earnings!$L$12)^Y$47) -> 1801115.034 | AA33: =Cohorts!AC742*(Earnings!$L$17*(1+Earnings!$L$12)^Z$47) -> 1887947.303 | AB33: =Cohorts!AD742*(Earnings!$L$17*(1+Earnings!$L$12)^AA$47) -> 1978965.781 | AC33: =Cohorts!AE742*(Earnings!$L$17*(1+Earnings!$L$12)^AB$47) -> 2074372.286 | AD33: =Cohorts!AF742*(Earnings!$L$17*(1+Earnings!$L$12)^AC$47) -> 2174378.365 | AE33: =Cohorts!AG742*(Earnings!$L$17*(1+Earnings!$L$12)^AD$47) -> 2279205.766 | AF33: =Cohorts!AH742*(Earnings!$L$17*(1+Earnings!$L$12)^AE$47) -> 2389086.926 | AG33: =Cohorts!AI742*(Earnings!$L$17*(1+Earnings!$L$12)^AF$47) -> 2504265.489 | AH33: =Cohorts!AJ742*(Earnings!$L$17*(1+Earnings!$L$12)^AG$47) -> 2624996.842 | AI33: =Cohorts!AK742*(Earnings!$L$17*(1+Earnings!$L$12)^AH$47) -> 2751548.689 | AJ33: =Cohorts!AL742*(Earnings!$L$17*(1+Earnings!$L$12)^AI$47) -> 2884201.636
C34: 13th | S34: =Cohorts!U743*(Earnings!$L$17*(1+Earnings!$L$12)^R$47) -> 707853.4607 | T34: =Cohorts!V743*(Earnings!$L$17*(1+Earnings!$L$12)^S$47) -> 1357847.355 | U34: =Cohorts!W743*(Earnings!$L$17*(1+Earnings!$L$12)^T$47) -> 1423309.563 | V34: =Cohorts!X743*(Earnings!$L$17*(1+Earnings!$L$12)^U$47) -> 1491927.723 | W34: =Cohorts!Y743*(Earnings!$L$17*(1+Earnings!$L$12)^V$47) -> 1563853.984 | X34: =Cohorts!Z743*(Earnings!$L$17*(1+Earnings!$L$12)^W$47) -> 1639247.831 | Y34: =Cohorts!AA743*(Earnings!$L$17*(1+Earnings!$L$12)^X$47) -> 1718276.436 | Z34: =Cohorts!AB743*(Earnings!$L$17*(1+Earnings!$L$12)^Y$47) -> 1801115.034 | AA34: =Cohorts!AC743*(Earnings!$L$17*(1+Earnings!$L$12)^Z$47) -> 1887947.303 | AB34: =Cohorts!AD743*(Earnings!$L$17*(1+Earnings!$L$12)^AA$47) -> 1978965.781 | AC34: =Cohorts!AE743*(Earnings!$L$17*(1+Earnings!$L$12)^AB$47) -> 2074372.286 | AD34: =Cohorts!AF743*(Earnings!$L$17*(1+Earnings!$L$12)^AC$47) -> 2174378.365 | AE34: =Cohorts!AG743*(Earnings!$L$17*(1+Earnings!$L$12)^AD$47) -> 2279205.766 | AF34: =Cohorts!AH743*(Earnings!$L$17*(1+Earnings!$L$12)^AE$47) -> 2389086.926 | AG34: =Cohorts!AI743*(Earnings!$L$17*(1+Earnings!$L$12)^AF$47) -> 2504265.489 | AH34: =Cohorts!AJ743*(Earnings!$L$17*(1+Earnings!$L$12)^AG$47) -> 2624996.842 | AI34: =Cohorts!AK743*(Earnings!$L$17*(1+Earnings!$L$12)^AH$47) -> 2751548.689 | AJ34: =Cohorts!AL743*(Earnings!$L$17*(1+Earnings!$L$12)^AI$47) -> 2884201.636 | AK34: =Cohorts!AM743*(Earnings!$L$17*(1+Earnings!$L$12)^AJ$47) -> 3023249.819
C35: 14th | T35: =Cohorts!V744*(Earnings!$L$17*(1+Earnings!$L$12)^S$47) -> 741979.2779 | U35: =Cohorts!W744*(Earnings!$L$17*(1+Earnings!$L$12)^T$47) -> 1423309.563 | V35: =Cohorts!X744*(Earnings!$L$17*(1+Earnings!$L$12)^U$47) -> 1491927.723 | W35: =Cohorts!Y744*(Earnings!$L$17*(1+Earnings!$L$12)^V$47) -> 1563853.984 | X35: =Cohorts!Z744*(Earnings!$L$17*(1+Earnings!$L$12)^W$47) -> 1639247.831 | Y35: =Cohorts!AA744*(Earnings!$L$17*(1+Earnings!$L$12)^X$47) -> 1718276.436 | Z35: =Cohorts!AB744*(Earnings!$L$17*(1+Earnings!$L$12)^Y$47) -> 1801115.034 | AA35: =Cohorts!AC744*(Earnings!$L$17*(1+Earnings!$L$12)^Z$47) -> 1887947.303 | AB35: =Cohorts!AD744*(Earnings!$L$17*(1+Earnings!$L$12)^AA$47) -> 1978965.781 | AC35: =Cohorts!AE744*(Earnings!$L$17*(1+Earnings!$L$12)^AB$47) -> 2074372.286 | AD35: =Cohorts!AF744*(Earnings!$L$17*(1+Earnings!$L$12)^AC$47) -> 2174378.365 | AE35: =Cohorts!AG744*(Earnings!$L$17*(1+Earnings!$L$12)^AD$47) -> 2279205.766 | AF35: =Cohorts!AH744*(Earnings!$L$17*(1+Earnings!$L$12)^AE$47) -> 2389086.926 | AG35: =Cohorts!AI744*(Earnings!$L$17*(1+Earnings!$L$12)^AF$47) -> 2504265.489 | AH35: =Cohorts!AJ744*(Earnings!$L$17*(1+Earnings!$L$12)^AG$47) -> 2624996.842 | AI35: =Cohorts!AK744*(Earnings!$L$17*(1+Earnings!$L$12)^AH$47) -> 2751548.689 | AJ35: =Cohorts!AL744*(Earnings!$L$17*(1+Earnings!$L$12)^AI$47) -> 2884201.636 | AK35: =Cohorts!AM744*(Earnings!$L$17*(1+Earnings!$L$12)^AJ$47) -> 3023249.819 | AL35: =Cohorts!AN744*(Earnings!$L$17*(1+Earnings!$L$12)^AK$47) -> 3169001.555
C36: 15th | U36: =Cohorts!W745*(Earnings!$L$17*(1+Earnings!$L$12)^T$47) -> 777750.3106 | V36: =Cohorts!X745*(Earnings!$L$17*(1+Earnings!$L$12)^U$47) -> 1491927.723 | W36: =Cohorts!Y745*(Earnings!$L$17*(1+Earnings!$L$12)^V$47) -> 1563853.984 | X36: =Cohorts!Z745*(Earnings!$L$17*(1+Earnings!$L$12)^W$47) -> 1639247.831 | Y36: =Cohorts!AA745*(Earnings!$L$17*(1+Earnings!$L$12)^X$47) -> 1718276.436 | Z36: =Cohorts!AB745*(Earnings!$L$17*(1+Earnings!$L$12)^Y$47) -> 1801115.034 | AA36: =Cohorts!AC745*(Earnings!$L$17*(1+Earnings!$L$12)^Z$47) -> 1887947.303 | AB36: =Cohorts!AD745*(Earnings!$L$17*(1+Earnings!$L$12)^AA$47) -> 1978965.781 | AC36: =Cohorts!AE745*(Earnings!$L$17*(1+Earnings!$L$12)^AB$47) -> 2074372.286 | AD36: =Cohorts!AF745*(Earnings!$L$17*(1+Earnings!$L$12)^AC$47) -> 2174378.365 | AE36: =Cohorts!AG745*(Earnings!$L$17*(1+Earnings!$L$12)^AD$47) -> 2279205.766 | AF36: =Cohorts!AH745*(Earnings!$L$17*(1+Earnings!$L$12)^AE$47) -> 2389086.926 | AG36: =Cohorts!AI745*(Earnings!$L$17*(1+Earnings!$L$12)^AF$47) -> 2504265.489 | AH36: =Cohorts!AJ745*(Earnings!$L$17*(1+Earnings!$L$12)^AG$47) -> 2624996.842 | AI36: =Cohorts!AK745*(Earnings!$L$17*(1+Earnings!$L$12)^AH$47) -> 2751548.689 | AJ36: =Cohorts!AL745*(Earnings!$L$17*(1+Earnings!$L$12)^AI$47) -> 2884201.636 | AK36: =Cohorts!AM745*(Earnings!$L$17*(1+Earnings!$L$12)^AJ$47) -> 3023249.819 | AL36: =Cohorts!AN745*(Earnings!$L$17*(1+Earnings!$L$12)^AK$47) -> 3169001.555 | AM36: =Cohorts!AO745*(Earnings!$L$17*(1+Earnings!$L$12)^AL$47) -> 3321780.024
C37: 16th | V37: =Cohorts!X746*(Earnings!$L$17*(1+Earnings!$L$12)^U$47) -> 815245.8749 | W37: =Cohorts!Y746*(Earnings!$L$17*(1+Earnings!$L$12)^V$47) -> 1563853.984 | X37: =Cohorts!Z746*(Earnings!$L$17*(1+Earnings!$L$12)^W$47) -> 1639247.831 | Y37: =Cohorts!AA746*(Earnings!$L$17*(1+Earnings!$L$12)^X$47) -> 1718276.436 | Z37: =Cohorts!AB746*(Earnings!$L$17*(1+Earnings!$L$12)^Y$47) -> 1801115.034 | AA37: =Cohorts!AC746*(Earnings!$L$17*(1+Earnings!$L$12)^Z$47) -> 1887947.303 | AB37: =Cohorts!AD746*(Earnings!$L$17*(1+Earnings!$L$12)^AA$47) -> 1978965.781 | AC37: =Cohorts!AE746*(Earnings!$L$17*(1+Earnings!$L$12)^AB$47) -> 2074372.286 | AD37: =Cohorts!AF746*(Earnings!$L$17*(1+Earnings!$L$12)^AC$47) -> 2174378.365 | AE37: =Cohorts!AG746*(Earnings!$L$17*(1+Earnings!$L$12)^AD$47) -> 2279205.766 | AF37: =Cohorts!AH746*(Earnings!$L$17*(1+Earnings!$L$12)^AE$47) -> 2389086.926 | AG37: =Cohorts!AI746*(Earnings!$L$17*(1+Earnings!$L$12)^AF$47) -> 2504265.489 | AH37: =Cohorts!AJ746*(Earnings!$L$17*(1+Earnings!$L$12)^AG$47) -> 2624996.842 | AI37: =Cohorts!AK746*(Earnings!$L$17*(1+Earnings!$L$12)^AH$47) -> 2751548.689 | AJ37: =Cohorts!AL746*(Earnings!$L$17*(1+Earnings!$L$12)^AI$47) -> 2884201.636 | AK37: =Cohorts!AM746*(Earnings!$L$17*(1+Earnings!$L$12)^AJ$47) -> 3023249.819 | AL37: =Cohorts!AN746*(Earnings!$L$17*(1+Earnings!$L$12)^AK$47) -> 3169001.555 | AM37: =Cohorts!AO746*(Earnings!$L$17*(1+Earnings!$L$12)^AL$47) -> 3321780.024 | AN37: =Cohorts!AP746*(Earnings!$L$17*(1+Earnings!$L$12)^AM$47) -> 3481923.986
C38: 17th | W38: =Cohorts!Y747*(Earnings!$L$17*(1+Earnings!$L$12)^V$47) -> 854549.111 | X38: =Cohorts!Z747*(Earnings!$L$17*(1+Earnings!$L$12)^W$47) -> 1639247.831 | Y38: =Cohorts!AA747*(Earnings!$L$17*(1+Earnings!$L$12)^X$47) -> 1718276.436 | Z38: =Cohorts!AB747*(Earnings!$L$17*(1+Earnings!$L$12)^Y$47) -> 1801115.034 | AA38: =Cohorts!AC747*(Earnings!$L$17*(1+Earnings!$L$12)^Z$47) -> 1887947.303 | AB38: =Cohorts!AD747*(Earnings!$L$17*(1+Earnings!$L$12)^AA$47) -> 1978965.781 | AC38: =Cohorts!AE747*(Earnings!$L$17*(1+Earnings!$L$12)^AB$47) -> 2074372.286 | AD38: =Cohorts!AF747*(Earnings!$L$17*(1+Earnings!$L$12)^AC$47) -> 2174378.365 | AE38: =Cohorts!AG747*(Earnings!$L$17*(1+Earnings!$L$12)^AD$47) -> 2279205.766 | AF38: =Cohorts!AH747*(Earnings!$L$17*(1+Earnings!$L$12)^AE$47) -> 2389086.926 | AG38: =Cohorts!AI747*(Earnings!$L$17*(1+Earnings!$L$12)^AF$47) -> 2504265.489 | AH38: =Cohorts!AJ747*(Earnings!$L$17*(1+Earnings!$L$12)^AG$47) -> 2624996.842 | AI38: =Cohorts!AK747*(Earnings!$L$17*(1+Earnings!$L$12)^AH$47) -> 2751548.689 | AJ38: =Cohorts!AL747*(Earnings!$L$17*(1+Earnings!$L$12)^AI$47) -> 2884201.636 | AK38: =Cohorts!AM747*(Earnings!$L$17*(1+Earnings!$L$12)^AJ$47) -> 3023249.819 | AL38: =Cohorts!AN747*(Earnings!$L$17*(1+Earnings!$L$12)^AK$47) -> 3169001.555 | AM38: =Cohorts!AO747*(Earnings!$L$17*(1+Earnings!$L$12)^AL$47) -> 3321780.024 | AN38: =Cohorts!AP747*(Earnings!$L$17*(1+Earnings!$L$12)^AM$47) -> 3481923.986 | AO38: =Cohorts!AQ747*(Earnings!$L$17*(1+Earnings!$L$12)^AN$47) -> 3649788.535
C39: 18th | X39: =Cohorts!Z748*(Earnings!$L$17*(1+Earnings!$L$12)^W$47) -> 895747.1674 | Y39: =Cohorts!AA748*(Earnings!$L$17*(1+Earnings!$L$12)^X$47) -> 1710634.387 | Z39: =Cohorts!AB748*(Earnings!$L$17*(1+Earnings!$L$12)^Y$47) -> 1793104.559 | AA39: =Cohorts!AC748*(Earnings!$L$17*(1+Earnings!$L$12)^Z$47) -> 1879550.641 | AB39: =Cohorts!AD748*(Earnings!$L$17*(1+Earnings!$L$12)^AA$47) -> 1970164.313 | AC39: =Cohorts!AE748*(Earnings!$L$17*(1+Earnings!$L$12)^AB$47) -> 2065146.497 | AD39: =Cohorts!AF748*(Earnings!$L$17*(1+Earnings!$L$12)^AC$47) -> 2164707.798 | AE39: =Cohorts!AG748*(Earnings!$L$17*(1+Earnings!$L$12)^AD$47) -> 2269068.979 | AF39: =Cohorts!AH748*(Earnings!$L$17*(1+Earnings!$L$12)^AE$47) -> 2378461.441 | AG39: =Cohorts!AI748*(Earnings!$L$17*(1+Earnings!$L$12)^AF$47) -> 2493127.746 | AH39: =Cohorts!AJ748*(Earnings!$L$17*(1+Earnings!$L$12)^AG$47) -> 2613322.146 | AI39: =Cohorts!AK748*(Earnings!$L$17*(1+Earnings!$L$12)^AH$47) -> 2739311.152 | AJ39: =Cohorts!AL748*(Earnings!$L$17*(1+Earnings!$L$12)^AI$47) -> 2871374.123 | AK39: =Cohorts!AM748*(Earnings!$L$17*(1+Earnings!$L$12)^AJ$47) -> 3009803.889 | AL39: =Cohorts!AN748*(Earnings!$L$17*(1+Earnings!$L$12)^AK$47) -> 3154907.393 | AM39: =Cohorts!AO748*(Earnings!$L$17*(1+Earnings!$L$12)^AL$47) -> 3307006.378 | AN39: =Cohorts!AP748*(Earnings!$L$17*(1+Earnings!$L$12)^AM$47) -> 3466438.099 | AO39: =Cohorts!AQ748*(Earnings!$L$17*(1+Earnings!$L$12)^AN$47) -> 3633556.068 | AP39: =Cohorts!AR748*(Earnings!$L$17*(1+Earnings!$L$12)^AO$47) -> 3808730.843
C40: 19th | Y40: =Cohorts!AA749*(Earnings!$L$17*(1+Earnings!$L$12)^X$47) -> 938931.3938 | Z40: =Cohorts!AB749*(Earnings!$L$17*(1+Earnings!$L$12)^Y$47) -> 1801115.034 | AA40: =Cohorts!AC749*(Earnings!$L$17*(1+Earnings!$L$12)^Z$47) -> 1887947.303 | AB40: =Cohorts!AD749*(Earnings!$L$17*(1+Earnings!$L$12)^AA$47) -> 1978965.781 | AC40: =Cohorts!AE749*(Earnings!$L$17*(1+Earnings!$L$12)^AB$47) -> 2074372.286 | AD40: =Cohorts!AF749*(Earnings!$L$17*(1+Earnings!$L$12)^AC$47) -> 2174378.365 | AE40: =Cohorts!AG749*(Earnings!$L$17*(1+Earnings!$L$12)^AD$47) -> 2279205.766 | AF40: =Cohorts!AH749*(Earnings!$L$17*(1+Earnings!$L$12)^AE$47) -> 2389086.926 | AG40: =Cohorts!AI749*(Earnings!$L$17*(1+Earnings!$L$12)^AF$47) -> 2504265.489 | AH40: =Cohorts!AJ749*(Earnings!$L$17*(1+Earnings!$L$12)^AG$47) -> 2624996.842 | AI40: =Cohorts!AK749*(Earnings!$L$17*(1+Earnings!$L$12)^AH$47) -> 2751548.689 | AJ40: =Cohorts!AL749*(Earnings!$L$17*(1+Earnings!$L$12)^AI$47) -> 2884201.636 | AK40: =Cohorts!AM749*(Earnings!$L$17*(1+Earnings!$L$12)^AJ$47) -> 3023249.819 | AL40: =Cohorts!AN749*(Earnings!$L$17*(1+Earnings!$L$12)^AK$47) -> 3169001.555 | AM40: =Cohorts!AO749*(Earnings!$L$17*(1+Earnings!$L$12)^AL$47) -> 3321780.024 | AN40: =Cohorts!AP749*(Earnings!$L$17*(1+Earnings!$L$12)^AM$47) -> 3481923.986 | AO40: =Cohorts!AQ749*(Earnings!$L$17*(1+Earnings!$L$12)^AN$47) -> 3649788.535 | AP40: =Cohorts!AR749*(Earnings!$L$17*(1+Earnings!$L$12)^AO$47) -> 3825745.881 | AQ40: =Cohorts!AS749*(Earnings!$L$17*(1+Earnings!$L$12)^AP$47) -> 4010186.181
C41: 20th | Z41: =Cohorts!AB750*(Earnings!$L$17*(1+Earnings!$L$12)^Y$47) -> 984197.5441 | AA41: =Cohorts!AC750*(Earnings!$L$17*(1+Earnings!$L$12)^Z$47) -> 1887947.303 | AB41: =Cohorts!AD750*(Earnings!$L$17*(1+Earnings!$L$12)^AA$47) -> 1978965.781 | AC41: =Cohorts!AE750*(Earnings!$L$17*(1+Earnings!$L$12)^AB$47) -> 2074372.286 | AD41: =Cohorts!AF750*(Earnings!$L$17*(1+Earnings!$L$12)^AC$47) -> 2174378.365 | AE41: =Cohorts!AG750*(Earnings!$L$17*(1+Earnings!$L$12)^AD$47) -> 2279205.766 | AF41: =Cohorts!AH750*(Earnings!$L$17*(1+Earnings!$L$12)^AE$47) -> 2389086.926 | AG41: =Cohorts!AI750*(Earnings!$L$17*(1+Earnings!$L$12)^AF$47) -> 2504265.489 | AH41: =Cohorts!AJ750*(Earnings!$L$17*(1+Earnings!$L$12)^AG$47) -> 2624996.842 | AI41: =Cohorts!AK750*(Earnings!$L$17*(1+Earnings!$L$12)^AH$47) -> 2751548.689 | AJ41: =Cohorts!AL750*(Earnings!$L$17*(1+Earnings!$L$12)^AI$47) -> 2884201.636 | AK41: =Cohorts!AM750*(Earnings!$L$17*(1+Earnings!$L$12)^AJ$47) -> 3023249.819 | AL41: =Cohorts!AN750*(Earnings!$L$17*(1+Earnings!$L$12)^AK$47) -> 3169001.555 | AM41: =Cohorts!AO750*(Earnings!$L$17*(1+Earnings!$L$12)^AL$47) -> 3321780.024 | AN41: =Cohorts!AP750*(Earnings!$L$17*(1+Earnings!$L$12)^AM$47) -> 3481923.986 | AO41: =Cohorts!AQ750*(Earnings!$L$17*(1+Earnings!$L$12)^AN$47) -> 3649788.535 | AP41: =Cohorts!AR750*(Earnings!$L$17*(1+Earnings!$L$12)^AO$47) -> 3825745.881 | AQ41: =Cohorts!AS750*(Earnings!$L$17*(1+Earnings!$L$12)^AP$47) -> 4010186.181 | AR41: =Cohorts!AT750*(Earnings!$L$17*(1+Earnings!$L$12)^AQ$47) -> 4203518.401
C43: SUM | G43: =SUM(G22:G41) -> 402311.4181 | H43: 1193445.081 | I43: 2059925.237 | J43: 3007178.062 | K43: 4040977.801 | L43: 5167467.723 | M43: 6393182.277 | N43: 7725070.536 | O43: 9170520.984 | P43: 10737387.74 | Q43: 12434018.26 | R43: 14269282.69 | S43: 16252604.82 | T43: 18393994.89 | U43: 20704084.2 | V43: 23194161.72 | W43: 25876212.86 | X43: 28762960.29 | Y43: 31860265.2 | Z43: 33396257.67 | AA43: 33974654.79 | AB43: 33633616.81 | AC43: 33180730.78 | AD43: 32606004.91 | AE43: 31898743.94 | AF43: 31047504.56 | AG43: 30040048.12 | AH43: 28863290.57 | AI43: 27503249.35 | AJ43: 25944987.21 | AK43: 24172552.62 | AL43: 22168916.72 | AM43: 19915906.5 | AN43: 17394134.04 | AO43: 14582921.67 | AP43: 11460222.6 | AQ43: 8020372.362 | AR43: 4203518.401
B45: "With Project" annual earnings in US$/year:
D46: 2013 | E46: =D46+1 -> 2014 | F46: =E46+1 -> 2015 | G46: 2016 | H46: 2017 | I46: 2018 | J46: 2019 | K46: 2020 | L46: 2021 | M46: 2022 | N46: 2023 | O46: 2024 | P46: 2025 | Q46: 2026 | R46: 2027 | S46: 2028 | T46: 2029 | U46: 2030 | V46: 2031 | W46: 2032 | X46: =W46+1 -> 2033 | Y46: 2034 | Z46: 2035 | AA46: 2036 | AB46: 2037 | AC46: 2038 | AD46: 2039 | AE46: 2040 | AF46: 2041 | AG46: 2042 | AH46: 2043 | AI46: 2044 | AJ46: 2045 | AK46: 2046 | AL46: 2047 | AM46: 2048 | AN46: 2049 | AO46: 2050 | AP46: 2051 | AQ46: =AP46+1 -> 2052 | AR46: =AQ46+1 -> 2053
C47: Cohort | D47: 1 | E47: 2 | F47: 3 | G47: 4 | H47: 5 | I47: 6 | J47: 7 | K47: 8 | L47: 9 | M47: 10 | N47: 11 | O47: 12 | P47: 13 | Q47: 14 | R47: 15 | S47: 16 | T47: 17 | U47: 18 | V47: 19 | W47: 20 | X47: =W47+1 -> 21 | Y47: 22 | Z47: 23 | AA47: 24 | AB47: 25 | AC47: 26 | AD47: 27 | AE47: 28 | AF47: 29 | AG47: 30 | AH47: 31 | AI47: 32 | AJ47: 33 | AK47: 34 | AL47: 35 | AM47: 36 | AN47: 37 | AO47: 38 | AP47: 39 | AQ47: =AP47+1 -> 40 | AR47: =AQ47+1 -> 41
B48: Earnings for Proposal 1 | C48: 1st | G48: =Cohorts!I67*(($L$10*12*(Cohorts!$K$31+$L$15)/exrate)*(1+Cohorts!$J$31))*(1+$L$12)^F$47 ->  | H48: =Cohorts!J67*(($L$10*12*(Cohorts!$K$31+Earnings!$L$15)/1.6)*(1+Cohorts!$J$31))*(1+Earnings!$L$12)^G$47 ->  | I48: =Cohorts!K67*(($L$10*12*(Cohorts!$K$31+Earnings!$L$15)/1.6)*(1+Cohorts!$J$31))*(1+Earnings!$L$12)^H$47 ->  | J48: =Cohorts!L67*(($L$10*12*(Cohorts!$K$31+Earnings!$L$15)/1.6)*(1+Cohorts!$J$31))*(1+Earnings!$L$12)^I$47 ->  | K48: =Cohorts!M67*(($L$10*12*(Cohorts!$K$31+Earnings!$L$15)/1.6)*(1+Cohorts!$J$31))*(1+Earnings!$L$12)^J$47 ->  | L48: =Cohorts!N67*(($L$10*12*(Cohorts!$K$31+Earnings!$L$15)/1.6)*(1+Cohorts!$J$31))*(1+Earnings!$L$12)^K$47 ->  | M48: =Cohorts!O67*(($L$10*12*(Cohorts!$K$31+Earnings!$L$15)/1.6)*(1+Cohorts!$J$31))*(1+Earnings!$L$12)^L$47 ->  | N48: =Cohorts!P67*(($L$10*12*(Cohorts!$K$31+Earnings!$L$15)/1.6)*(1+Cohorts!$J$31))*(1+Earnings!$L$12)^M$47 ->  | O48: =Cohorts!Q67*(($L$10*12*(Cohorts!$K$31+Earnings!$L$15)/1.6)*(1+Cohorts!$J$31))*(1+Earnings!$L$12)^N$47 ->  | P48: =Cohorts!R67*(($L$10*12*(Cohorts!$K$31+Earnings!$L$15)/1.6)*(1+Cohorts!$J$31))*(1+Earnings!$L$12)^O$47 ->  | Q48: =Cohorts!S67*(($L$10*12*(Cohorts!$K$31+Earnings!$L$15)/1.6)*(1+Cohorts!$J$31))*(1+Earnings!$L$12)^P$47 ->  | R48: =Cohorts!T67*(($L$10*12*(Cohorts!$K$31+Earnings!$L$15)/1.6)*(1+Cohorts!$J$31))*(1+Earnings!$L$12)^Q$47 ->  | S48: =Cohorts!U67*(($L$10*12*(Cohorts!$K$31+Earnings!$L$15)/1.6)*(1+Cohorts!$J$31))*(1+Earnings!$L$12)^R$47 ->  | T48: =Cohorts!V67*(($L$10*12*(Cohorts!$K$31+Earnings!$L$15)/1.6)*(1+Cohorts!$J$31))*(1+Earnings!$L$12)^S$47 ->  | U48: =Cohorts!W67*(($L$10*12*(Cohorts!$K$31+Earnings!$L$15)/1.6)*(1+Cohorts!$J$31))*(1+Earnings!$L$12)^T$47 ->  | V48: =Cohorts!X67*(($L$10*12*(Cohorts!$K$31+Earnings!$L$15)/1.6)*(1+Cohorts!$J$31))*(1+Earnings!$L$12)^U$47 ->  | W48: =Cohorts!Y67*(($L$10*12*(Cohorts!$K$31+Earnings!$L$15)/1.6)*(1+Cohorts!$J$31))*(1+Earnings!$L$12)^V$47 ->  | X48: =Cohorts!Z67*(($L$10*12*(Cohorts!$K$31+Earnings!$L$15)/1.6)*(1+Cohorts!$J$31))*(1+Earnings!$L$12)^W$47 ->  | Y48: =Cohorts!AA67*(($L$10*12*(Cohorts!$K$31+Earnings!$L$15)/1.6)*(1+Cohorts!$J$31))*(1+Earnings!$L$12)^X$47 -> 
C49: 2nd | H49: =Cohorts!J68*(($L$10*12*(Cohorts!$K$31+Earnings!$L$15)/1.6)*(1+Cohorts!$J$31))*(1+Earnings!$L$12)^G$47 ->  | I49: =Cohorts!K68*(($L$10*12*(Cohorts!$K$31+Earnings!$L$15)/1.6)*(1+Cohorts!$J$31))*(1+Earnings!$L$12)^H$47 ->  | J49: =Cohorts!L68*(($L$10*12*(Cohorts!$K$31+Earnings!$L$15)/1.6)*(1+Cohorts!$J$31))*(1+Earnings!$L$12)^I$47 ->  | K49: =Cohorts!M68*(($L$10*12*(Cohorts!$K$31+Earnings!$L$15)/1.6)*(1+Cohorts!$J$31))*(1+Earnings!$L$12)^J$47 ->  | L49: =Cohorts!N68*(($L$10*12*(Cohorts!$K$31+Earnings!$L$15)/1.6)*(1+Cohorts!$J$31))*(1+Earnings!$L$12)^K$47 ->  | M49: =Cohorts!O68*(($L$10*12*(Cohorts!$K$31+Earnings!$L$15)/1.6)*(1+Cohorts!$J$31))*(1+Earnings!$L$12)^L$47 ->  | N49: =Cohorts!P68*(($L$10*12*(Cohorts!$K$31+Earnings!$L$15)/1.6)*(1+Cohorts!$J$31))*(1+Earnings!$L$12)^M$47 ->  | O49: =Cohorts!Q68*(($L$10*12*(Cohorts!$K$31+Earnings!$L$15)/1.6)*(1+Cohorts!$J$31))*(1+Earnings!$L$12)^N$47 ->  | P49: =Cohorts!R68*(($L$10*12*(Cohorts!$K$31+Earnings!$L$15)/1.6)*(1+Cohorts!$J$31))*(1+Earnings!$L$12)^O$47 ->  | Q49: =Cohorts!S68*(($L$10*12*(Cohorts!$K$31+Earnings!$L$15)/1.6)*(1+Cohorts!$J$31))*(1+Earnings!$L$12)^P$47 ->  | R49: =Cohorts!T68*(($L$10*12*(Cohorts!$K$31+Earnings!$L$15)/1.6)*(1+Cohorts!$J$31))*(1+Earnings!$L$12)^Q$47 ->  | S49: =Cohorts!U68*(($L$10*12*(Cohorts!$K$31+Earnings!$L$15)/1.6)*(1+Cohorts!$J$31))*(1+Earnings!$L$12)^R$47 ->  | T49: =Cohorts!V68*(($L$10*12*(Cohorts!$K$31+Earnings!$L$15)/1.6)*(1+Cohorts!$J$31))*(1+Earnings!$L$12)^S$47 ->  | U49: =Cohorts!W68*(($L$10*12*(Cohorts!$K$31+Earnings!$L$15)/1.6)*(1+Cohorts!$J$31))*(1+Earnings!$L$12)^T$47 ->  | V49: =Cohorts!X68*(($L$10*12*(Cohorts!$K$31+Earnings!$L$15)/1.6)*(1+Cohorts!$J$31))*(1+Earnings!$L$12)^U$47 ->  | W49: =Cohorts!Y68*(($L$10*12*(Cohorts!$K$31+Earnings!$L$15)/1.6)*(1+Cohorts!$J$31))*(1+Earnings!$L$12)^V$47 ->  | X49: =Cohorts!Z68*(($L$10*12*(Cohorts!$K$31+Earnings!$L$15)/1.6)*(1+Cohorts!$J$31))*(1+Earnings!$L$12)^W$47 ->  | Y49: =Cohorts!AA68*(($L$10*12*(Cohorts!$K$31+Earnings!$L$15)/1.6)*(1+Cohorts!$J$31))*(1+Earnings!$L$12)^X$47 ->  | Z49: =Cohorts!AB68*(($L$10*12*(Cohorts!$K$31+Earnings!$L$15)/1.6)*(1+Cohorts!$J$31))*(1+Earnings!$L$12)^Y$47 -> 
C50: 3rd | I50: =Cohorts!K69*(($L$10*12*(Cohorts!$K$31+Earnings!$L$15)/1.6)*(1+Cohorts!$J$31))*(1+Earnings!$L$12)^H$47 ->  | J50: =Cohorts!L69*(($L$10*12*(Cohorts!$K$31+Earnings!$L$15)/1.6)*(1+Cohorts!$J$31))*(1+Earnings!$L$12)^I$47 ->  | K50: =Cohorts!M69*(($L$10*12*(Cohorts!$K$31+Earnings!$L$15)/1.6)*(1+Cohorts!$J$31))*(1+Earnings!$L$12)^J$47 ->  | L50: =Cohorts!N69*(($L$10*12*(Cohorts!$K$31+Earnings!$L$15)/1.6)*(1+Cohorts!$J$31))*(1+Earnings!$L$12)^K$47 ->  | M50: =Cohorts!O69*(($L$10*12*(Cohorts!$K$31+Earnings!$L$15)/1.6)*(1+Cohorts!$J$31))*(1+Earnings!$L$12)^L$47 ->  | N50: =Cohorts!P69*(($L$10*12*(Cohorts!$K$31+Earnings!$L$15)/1.6)*(1+Cohorts!$J$31))*(1+Earnings!$L$12)^M$47 ->  | O50: =Cohorts!Q69*(($L$10*12*(Cohorts!$K$31+Earnings!$L$15)/1.6)*(1+Cohorts!$J$31))*(1+Earnings!$L$12)^N$47 ->  | P50: =Cohorts!R69*(($L$10*12*(Cohorts!$K$31+Earnings!$L$15)/1.6)*(1+Cohorts!$J$31))*(1+Earnings!$L$12)^O$47 ->  | Q50: =Cohorts!S69*(($L$10*12*(Cohorts!$K$31+Earnings!$L$15)/1.6)*(1+Cohorts!$J$31))*(1+Earnings!$L$12)^P$47 ->  | R50: =Cohorts!T69*(($L$10*12*(Cohorts!$K$31+Earnings!$L$15)/1.6)*(1+Cohorts!$J$31))*(1+Earnings!$L$12)^Q$47 ->  | S50: =Cohorts!U69*(($L$10*12*(Cohorts!$K$31+Earnings!$L$15)/1.6)*(1+Cohorts!$J$31))*(1+Earnings!$L$12)^R$47 ->  | T50: =Cohorts!V69*(($L$10*12*(Cohorts!$K$31+Earnings!$L$15)/1.6)*(1+Cohorts!$J$31))*(1+Earnings!$L$12)^S$47 ->  | U50: =Cohorts!W69*(($L$10*12*(Cohorts!$K$31+Earnings!$L$15)/1.6)*(1+Cohorts!$J$31))*(1+Earnings!$L$12)^T$47 ->  | V50: =Cohorts!X69*(($L$10*12*(Cohorts!$K$31+Earnings!$L$15)/1.6)*(1+Cohorts!$J$31))*(1+Earnings!$L$12)^U$47 ->  | W50: =Cohorts!Y69*(($L$10*12*(Cohorts!$K$31+Earnings!$L$15)/1.6)*(1+Cohorts!$J$31))*(1+Earnings!$L$12)^V$47 ->  | X50: =Cohorts!Z69*(($L$10*12*(Cohorts!$K$31+Earnings!$L$15)/1.6)*(1+Cohorts!$J$31))*(1+Earnings!$L$12)^W$47 ->  | Y50: =Cohorts!AA69*(($L$10*12*(Cohorts!$K$31+Earnings!$L$15)/1.6)*(1+Cohorts!$J$31))*(1+Earnings!$L$12)^X$47 ->  | Z50: =Cohorts!AB69*(($L$10*12*(Cohorts!$K$31+Earnings!$L$15)/1.6)*(1+Cohorts!$J$31))*(1+Earnings!$L$12)^Y$47 ->  | AA50: =Cohorts!AC69*(($L$10*12*(Cohorts!$K$31+Earnings!$L$15)/1.6)*(1+Cohorts!$J$31))*(1+Earnings!$L$12)^Z$47 -> 
C51: 4th | J51: =Cohorts!L70*(($L$10*12*(Cohorts!$K$31+Earnings!$L$15)/1.6)*(1+Cohorts!$J$31))*(1+Earnings!$L$12)^I$47 ->  | K51: =Cohorts!M70*(($L$10*12*(Cohorts!$K$31+Earnings!$L$15)/1.6)*(1+Cohorts!$J$31))*(1+Earnings!$L$12)^J$47 ->  | L51: =Cohorts!N70*(($L$10*12*(Cohorts!$K$31+Earnings!$L$15)/1.6)*(1+Cohorts!$J$31))*(1+Earnings!$L$12)^K$47 ->  | M51: =Cohorts!O70*(($L$10*12*(Cohorts!$K$31+Earnings!$L$15)/1.6)*(1+Cohorts!$J$31))*(1+Earnings!$L$12)^L$47 ->  | N51: =Cohorts!P70*(($L$10*12*(Cohorts!$K$31+Earnings!$L$15)/1.6)*(1+Cohorts!$J$31))*(1+Earnings!$L$12)^M$47 ->  | O51: =Cohorts!Q70*(($L$10*12*(Cohorts!$K$31+Earnings!$L$15)/1.6)*(1+Cohorts!$J$31))*(1+Earnings!$L$12)^N$47 ->  | P51: =Cohorts!R70*(($L$10*12*(Cohorts!$K$31+Earnings!$L$15)/1.6)*(1+Cohorts!$J$31))*(1+Earnings!$L$12)^O$47 ->  | Q51: =Cohorts!S70*(($L$10*12*(Cohorts!$K$31+Earnings!$L$15)/1.6)*(1+Cohorts!$J$31))*(1+Earnings!$L$12)^P$47 ->  | R51: =Cohorts!T70*(($L$10*12*(Cohorts!$K$31+Earnings!$L$15)/1.6)*(1+Cohorts!$J$31))*(1+Earnings!$L$12)^Q$47 ->  | S51: =Cohorts!U70*(($L$10*12*(Cohorts!$K$31+Earnings!$L$15)/1.6)*(1+Cohorts!$J$31))*(1+Earnings!$L$12)^R$47 ->  | T51: =Cohorts!V70*(($L$10*12*(Cohorts!$K$31+Earnings!$L$15)/1.6)*(1+Cohorts!$J$31))*(1+Earnings!$L$12)^S$47 ->  | U51: =Cohorts!W70*(($L$10*12*(Cohorts!$K$31+Earnings!$L$15)/1.6)*(1+Cohorts!$J$31))*(1+Earnings!$L$12)^T$47 ->  | V51: =Cohorts!X70*(($L$10*12*(Cohorts!$K$31+Earnings!$L$15)/1.6)*(1+Cohorts!$J$31))*(1+Earnings!$L$12)^U$47 ->  | W51: =Cohorts!Y70*(($L$10*12*(Cohorts!$K$31+Earnings!$L$15)/1.6)*(1+Cohorts!$J$31))*(1+Earnings!$L$12)^V$47 ->  | X51: =Cohorts!Z70*(($L$10*12*(Cohorts!$K$31+Earnings!$L$15)/1.6)*(1+Cohorts!$J$31))*(1+Earnings!$L$12)^W$47 ->  | Y51: =Cohorts!AA70*(($L$10*12*(Cohorts!$K$31+Earnings!$L$15)/1.6)*(1+Cohorts!$J$31))*(1+Earnings!$L$12)^X$47 ->  | Z51: =Cohorts!AB70*(($L$10*12*(Cohorts!$K$31+Earnings!$L$15)/1.6)*(1+Cohorts!$J$31))*(1+Earnings!$L$12)^Y$47 ->  | AA51: =Cohorts!AC70*(($L$10*12*(Cohorts!$K$31+Earnings!$L$15)/1.6)*(1+Cohorts!$J$31))*(1+Earnings!$L$12)^Z$47 ->  | AB51: =Cohorts!AD70*(($L$10*12*(Cohorts!$K$31+Earnings!$L$15)/1.6)*(1+Cohorts!$J$31))*(1+Earnings!$L$12)^AA$47 -> 
C52: 5th | K52: =Cohorts!M71*(($L$10*12*(Cohorts!$K$31+Earnings!$L$15)/1.6)*(1+Cohorts!$J$31))*(1+Earnings!$L$12)^J$47 ->  | L52: =Cohorts!N71*(($L$10*12*(Cohorts!$K$31+Earnings!$L$15)/1.6)*(1+Cohorts!$J$31))*(1+Earnings!$L$12)^K$47 ->  | M52: =Cohorts!O71*(($L$10*12*(Cohorts!$K$31+Earnings!$L$15)/1.6)*(1+Cohorts!$J$31))*(1+Earnings!$L$12)^L$47 ->  | N52: =Cohorts!P71*(($L$10*12*(Cohorts!$K$31+Earnings!$L$15)/1.6)*(1+Cohorts!$J$31))*(1+Earnings!$L$12)^M$47 ->  | O52: =Cohorts!Q71*(($L$10*12*(Cohorts!$K$31+Earnings!$L$15)/1.6)*(1+Cohorts!$J$31))*(1+Earnings!$L$12)^N$47 ->  | P52: =Cohorts!R71*(($L$10*12*(Cohorts!$K$31+Earnings!$L$15)/1.6)*(1+Cohorts!$J$31))*(1+Earnings!$L$12)^O$47 ->  | Q52: =Cohorts!S71*(($L$10*12*(Cohorts!$K$31+Earnings!$L$15)/1.6)*(1+Cohorts!$J$31))*(1+Earnings!$L$12)^P$47 ->  | R52: =Cohorts!T71*(($L$10*12*(Cohorts!$K$31+Earnings!$L$15)/1.6)*(1+Cohorts!$J$31))*(1+Earnings!$L$12)^Q$47 ->  | S52: =Cohorts!U71*(($L$10*12*(Cohorts!$K$31+Earnings!$L$15)/1.6)*(1+Cohorts!$J$31))*(1+Earnings!$L$12)^R$47 ->  | T52: =Cohorts!V71*(($L$10*12*(Cohorts!$K$31+Earnings!$L$15)/1.6)*(1+Cohorts!$J$31))*(1+Earnings!$L$12)^S$47 ->  | U52: =Cohorts!W71*(($L$10*12*(Cohorts!$K$31+Earnings!$L$15)/1.6)*(1+Cohorts!$J$31))*(1+Earnings!$L$12)^T$47 ->  | V52: =Cohorts!X71*(($L$10*12*(Cohorts!$K$31+Earnings!$L$15)/1.6)*(1+Cohorts!$J$31))*(1+Earnings!$L$12)^U$47 ->  | W52: =Cohorts!Y71*(($L$10*12*(Cohorts!$K$31+Earnings!$L$15)/1.6)*(1+Cohorts!$J$31))*(1+Earnings!$L$12)^V$47 ->  | X52: =Cohorts!Z71*(($L$10*12*(Cohorts!$K$31+Earnings!$L$15)/1.6)*(1+Cohorts!$J$31))*(1+Earnings!$L$12)^W$47 ->  | Y52: =Cohorts!AA71*(($L$10*12*(Cohorts!$K$31+Earnings!$L$15)/1.6)*(1+Cohorts!$J$31))*(1+Earnings!$L$12)^X$47 ->  | Z52: =Cohorts!AB71*(($L$10*12*(Cohorts!$K$31+Earnings!$L$15)/1.6)*(1+Cohorts!$J$31))*(1+Earnings!$L$12)^Y$47 ->  | AA52: =Cohorts!AC71*(($L$10*12*(Cohorts!$K$31+Earnings!$L$15)/1.6)*(1+Cohorts!$J$31))*(1+Earnings!$L$12)^Z$47 ->  | AB52: =Cohorts!AD71*(($L$10*12*(Cohorts!$K$31+Earnings!$L$15)/1.6)*(1+Cohorts!$J$31))*(1+Earnings!$L$12)^AA$47 ->  | AC52: =Cohorts!AE71*(($L$10*12*(Cohorts!$K$31+Earnings!$L$15)/1.6)*(1+Cohorts!$J$31))*(1+Earnings!$L$12)^AB$47 -> 
C53: 6th | L53: =Cohorts!N72*(($L$10*12*(Cohorts!$K$31+Earnings!$L$15)/1.6)*(1+Cohorts!$J$31))*(1+Earnings!$L$12)^K$47 ->  | M53: =Cohorts!O72*(($L$10*12*(Cohorts!$K$31+Earnings!$L$15)/1.6)*(1+Cohorts!$J$31))*(1+Earnings!$L$12)^L$47 ->  | N53: =Cohorts!P72*(($L$10*12*(Cohorts!$K$31+Earnings!$L$15)/1.6)*(1+Cohorts!$J$31))*(1+Earnings!$L$12)^M$47 ->  | O53: =Cohorts!Q72*(($L$10*12*(Cohorts!$K$31+Earnings!$L$15)/1.6)*(1+Cohorts!$J$31))*(1+Earnings!$L$12)^N$47 ->  | P53: =Cohorts!R72*(($L$10*12*(Cohorts!$K$31+Earnings!$L$15)/1.6)*(1+Cohorts!$J$31))*(1+Earnings!$L$12)^O$47 ->  | Q53: =Cohorts!S72*(($L$10*12*(Cohorts!$K$31+Earnings!$L$15)/1.6)*(1+Cohorts!$J$31))*(1+Earnings!$L$12)^P$47 ->  | R53: =Cohorts!T72*(($L$10*12*(Cohorts!$K$31+Earnings!$L$15)/1.6)*(1+Cohorts!$J$31))*(1+Earnings!$L$12)^Q$47 ->  | S53: =Cohorts!U72*(($L$10*12*(Cohorts!$K$31+Earnings!$L$15)/1.6)*(1+Cohorts!$J$31))*(1+Earnings!$L$12)^R$47 ->  | T53: =Cohorts!V72*(($L$10*12*(Cohorts!$K$31+Earnings!$L$15)/1.6)*(1+Cohorts!$J$31))*(1+Earnings!$L$12)^S$47 ->  | U53: =Cohorts!W72*(($L$10*12*(Cohorts!$K$31+Earnings!$L$15)/1.6)*(1+Cohorts!$J$31))*(1+Earnings!$L$12)^T$47 ->  | V53: =Cohorts!X72*(($L$10*12*(Cohorts!$K$31+Earnings!$L$15)/1.6)*(1+Cohorts!$J$31))*(1+Earnings!$L$12)^U$47 ->  | W53: =Cohorts!Y72*(($L$10*12*(Cohorts!$K$31+Earnings!$L$15)/1.6)*(1+Cohorts!$J$31))*(1+Earnings!$L$12)^V$47 ->  | X53: =Cohorts!Z72*(($L$10*12*(Cohorts!$K$31+Earnings!$L$15)/1.6)*(1+Cohorts!$J$31))*(1+Earnings!$L$12)^W$47 ->  | Y53: =Cohorts!AA72*(($L$10*12*(Cohorts!$K$31+Earnings!$L$15)/1.6)*(1+Cohorts!$J$31))*(1+Earnings!$L$12)^X$47 ->  | Z53: =Cohorts!AB72*(($L$10*12*(Cohorts!$K$31+Earnings!$L$15)/1.6)*(1+Cohorts!$J$31))*(1+Earnings!$L$12)^Y$47 ->  | AA53: =Cohorts!AC72*(($L$10*12*(Cohorts!$K$31+Earnings!$L$15)/1.6)*(1+Cohorts!$J$31))*(1+Earnings!$L$12)^Z$47 ->  | AB53: =Cohorts!AD72*(($L$10*12*(Cohorts!$K$31+Earnings!$L$15)/1.6)*(1+Cohorts!$J$31))*(1+Earnings!$L$12)^AA$47 ->  | AC53: =Cohorts!AE72*(($L$10*12*(Cohorts!$K$31+Earnings!$L$15)/1.6)*(1+Cohorts!$J$31))*(1+Earnings!$L$12)^AB$47 ->  | AD53: =Cohorts!AF72*(($L$10*12*(Cohorts!$K$31+Earnings!$L$15)/1.6)*(1+Cohorts!$J$31))*(1+Earnings!$L$12)^AC$47 -> 
C54: 7th | M54: =Cohorts!O73*(($L$10*12*(Cohorts!$K$31+Earnings!$L$15)/1.6)*(1+Cohorts!$J$31))*(1+Earnings!$L$12)^L$47 ->  | N54: =Cohorts!P73*(($L$10*12*(Cohorts!$K$31+Earnings!$L$15)/1.6)*(1+Cohorts!$J$31))*(1+Earnings!$L$12)^M$47 ->  | O54: =Cohorts!Q73*(($L$10*12*(Cohorts!$K$31+Earnings!$L$15)/1.6)*(1+Cohorts!$J$31))*(1+Earnings!$L$12)^N$47 ->  | P54: =Cohorts!R73*(($L$10*12*(Cohorts!$K$31+Earnings!$L$15)/1.6)*(1+Cohorts!$J$31))*(1+Earnings!$L$12)^O$47 ->  | Q54: =Cohorts!S73*(($L$10*12*(Cohorts!$K$31+Earnings!$L$15)/1.6)*(1+Cohorts!$J$31))*(1+Earnings!$L$12)^P$47 ->  | R54: =Cohorts!T73*(($L$10*12*(Cohorts!$K$31+Earnings!$L$15)/1.6)*(1+Cohorts!$J$31))*(1+Earnings!$L$12)^Q$47 ->  | S54: =Cohorts!U73*(($L$10*12*(Cohorts!$K$31+Earnings!$L$15)/1.6)*(1+Cohorts!$J$31))*(1+Earnings!$L$12)^R$47 ->  | T54: =Cohorts!V73*(($L$10*12*(Cohorts!$K$31+Earnings!$L$15)/1.6)*(1+Cohorts!$J$31))*(1+Earnings!$L$12)^S$47 ->  | U54: =Cohorts!W73*(($L$10*12*(Cohorts!$K$31+Earnings!$L$15)/1.6)*(1+Cohorts!$J$31))*(1+Earnings!$L$12)^T$47 ->  | V54: =Cohorts!X73*(($L$10*12*(Cohorts!$K$31+Earnings!$L$15)/1.6)*(1+Cohorts!$J$31))*(1+Earnings!$L$12)^U$47 ->  | W54: =Cohorts!Y73*(($L$10*12*(Cohorts!$K$31+Earnings!$L$15)/1.6)*(1+Cohorts!$J$31))*(1+Earnings!$L$12)^V$47 ->  | X54: =Cohorts!Z73*(($L$10*12*(Cohorts!$K$31+Earnings!$L$15)/1.6)*(1+Cohorts!$J$31))*(1+Earnings!$L$12)^W$47 ->  | Y54: =Cohorts!AA73*(($L$10*12*(Cohorts!$K$31+Earnings!$L$15)/1.6)*(1+Cohorts!$J$31))*(1+Earnings!$L$12)^X$47 ->  | Z54: =Cohorts!AB73*(($L$10*12*(Cohorts!$K$31+Earnings!$L$15)/1.6)*(1+Cohorts!$J$31))*(1+Earnings!$L$12)^Y$47 ->  | AA54: =Cohorts!AC73*(($L$10*12*(Cohorts!$K$31+Earnings!$L$15)/1.6)*(1+Cohorts!$J$31))*(1+Earnings!$L$12)^Z$47 ->  | AB54: =Cohorts!AD73*(($L$10*12*(Cohorts!$K$31+Earnings!$L$15)/1.6)*(1+Cohorts!$J$31))*(1+Earnings!$L$12)^AA$47 ->  | AC54: =Cohorts!AE73*(($L$10*12*(Cohorts!$K$31+Earnings!$L$15)/1.6)*(1+Cohorts!$J$31))*(1+Earnings!$L$12)^AB$47 ->  | AD54: =Cohorts!AF73*(($L$10*12*(Cohorts!$K$31+Earnings!$L$15)/1.6)*(1+Cohorts!$J$31))*(1+Earnings!$L$12)^AC$47 ->  | AE54: =Cohorts!AG73*(($L$10*12*(Cohorts!$K$31+Earnings!$L$15)/1.6)*(1+Cohorts!$J$31))*(1+Earnings!$L$12)^AD$47 -> 
C55: 8th | N55: =Cohorts!P74*(($L$10*12*(Cohorts!$K$31+Earnings!$L$15)/1.6)*(1+Cohorts!$J$31))*(1+Earnings!$L$12)^M$47 ->  | O55: =Cohorts!Q74*(($L$10*12*(Cohorts!$K$31+Earnings!$L$15)/1.6)*(1+Cohorts!$J$31))*(1+Earnings!$L$12)^N$47 ->  | P55: =Cohorts!R74*(($L$10*12*(Cohorts!$K$31+Earnings!$L$15)/1.6)*(1+Cohorts!$J$31))*(1+Earnings!$L$12)^O$47 ->  | Q55: =Cohorts!S74*(($L$10*12*(Cohorts!$K$31+Earnings!$L$15)/1.6)*(1+Cohorts!$J$31))*(1+Earnings!$L$12)^P$47 ->  | R55: =Cohorts!T74*(($L$10*12*(Cohorts!$K$31+Earnings!$L$15)/1.6)*(1+Cohorts!$J$31))*(1+Earnings!$L$12)^Q$47 ->  | S55: =Cohorts!U74*(($L$10*12*(Cohorts!$K$31+Earnings!$L$15)/1.6)*(1+Cohorts!$J$31))*(1+Earnings!$L$12)^R$47 ->  | T55: =Cohorts!V74*(($L$10*12*(Cohorts!$K$31+Earnings!$L$15)/1.6)*(1+Cohorts!$J$31))*(1+Earnings!$L$12)^S$47 ->  | U55: =Cohorts!W74*(($L$10*12*(Cohorts!$K$31+Earnings!$L$15)/1.6)*(1+Cohorts!$J$31))*(1+Earnings!$L$12)^T$47 ->  | V55: =Cohorts!X74*(($L$10*12*(Cohorts!$K$31+Earnings!$L$15)/1.6)*(1+Cohorts!$J$31))*(1+Earnings!$L$12)^U$47 ->  | W55: =Cohorts!Y74*(($L$10*12*(Cohorts!$K$31+Earnings!$L$15)/1.6)*(1+Cohorts!$J$31))*(1+Earnings!$L$12)^V$47 ->  | X55: =Cohorts!Z74*(($L$10*12*(Cohorts!$K$31+Earnings!$L$15)/1.6)*(1+Cohorts!$J$31))*(1+Earnings!$L$12)^W$47 ->  | Y55: =Cohorts!AA74*(($L$10*12*(Cohorts!$K$31+Earnings!$L$15)/1.6)*(1+Cohorts!$J$31))*(1+Earnings!$L$12)^X$47 ->  | Z55: =Cohorts!AB74*(($L$10*12*(Cohorts!$K$31+Earnings!$L$15)/1.6)*(1+Cohorts!$J$31))*(1+Earnings!$L$12)^Y$47 ->  | AA55: =Cohorts!AC74*(($L$10*12*(Cohorts!$K$31+Earnings!$L$15)/1.6)*(1+Cohorts!$J$31))*(1+Earnings!$L$12)^Z$47 ->  | AB55: =Cohorts!AD74*(($L$10*12*(Cohorts!$K$31+Earnings!$L$15)/1.6)*(1+Cohorts!$J$31))*(1+Earnings!$L$12)^AA$47 ->  | AC55: =Cohorts!AE74*(($L$10*12*(Cohorts!$K$31+Earnings!$L$15)/1.6)*(1+Cohorts!$J$31))*(1+Earnings!$L$12)^AB$47 ->  | AD55: =Cohorts!AF74*(($L$10*12*(Cohorts!$K$31+Earnings!$L$15)/1.6)*(1+Cohorts!$J$31))*(1+Earnings!$L$12)^AC$47 ->  | AE55: =Cohorts!AG74*(($L$10*12*(Cohorts!$K$31+Earnings!$L$15)/1.6)*(1+Cohorts!$J$31))*(1+Earnings!$L$12)^AD$47 ->  | AF55: =Cohorts!AH74*(($L$10*12*(Cohorts!$K$31+Earnings!$L$15)/1.6)*(1+Cohorts!$J$31))*(1+Earnings!$L$12)^AE$47 -> 
C56: 9th | O56: =Cohorts!Q75*(($L$10*12*(Cohorts!$K$31+Earnings!$L$15)/1.6)*(1+Cohorts!$J$31))*(1+Earnings!$L$12)^N$47 ->  | P56: =Cohorts!R75*(($L$10*12*(Cohorts!$K$31+Earnings!$L$15)/1.6)*(1+Cohorts!$J$31))*(1+Earnings!$L$12)^O$47 ->  | Q56: =Cohorts!S75*(($L$10*12*(Cohorts!$K$31+Earnings!$L$15)/1.6)*(1+Cohorts!$J$31))*(1+Earnings!$L$12)^P$47 ->  | R56: =Cohorts!T75*(($L$10*12*(Cohorts!$K$31+Earnings!$L$15)/1.6)*(1+Cohorts!$J$31))*(1+Earnings!$L$12)^Q$47 ->  | S56: =Cohorts!U75*(($L$10*12*(Cohorts!$K$31+Earnings!$L$15)/1.6)*(1+Cohorts!$J$31))*(1+Earnings!$L$12)^R$47 ->  | T56: =Cohorts!V75*(($L$10*12*(Cohorts!$K$31+Earnings!$L$15)/1.6)*(1+Cohorts!$J$31))*(1+Earnings!$L$12)^S$47 ->  | U56: =Cohorts!W75*(($L$10*12*(Cohorts!$K$31+Earnings!$L$15)/1.6)*(1+Cohorts!$J$31))*(1+Earnings!$L$12)^T$47 ->  | V56: =Cohorts!X75*(($L$10*12*(Cohorts!$K$31+Earnings!$L$15)/1.6)*(1+Cohorts!$J$31))*(1+Earnings!$L$12)^U$47 ->  | W56: =Cohorts!Y75*(($L$10*12*(Cohorts!$K$31+Earnings!$L$15)/1.6)*(1+Cohorts!$J$31))*(1+Earnings!$L$12)^V$47 ->  | X56: =Cohorts!Z75*(($L$10*12*(Cohorts!$K$31+Earnings!$L$15)/1.6)*(1+Cohorts!$J$31))*(1+Earnings!$L$12)^W$47 ->  | Y56: =Cohorts!AA75*(($L$10*12*(Cohorts!$K$31+Earnings!$L$15)/1.6)*(1+Cohorts!$J$31))*(1+Earnings!$L$12)^X$47 ->  | Z56: =Cohorts!AB75*(($L$10*12*(Cohorts!$K$31+Earnings!$L$15)/1.6)*(1+Cohorts!$J$31))*(1+Earnings!$L$12)^Y$47 ->  | AA56: =Cohorts!AC75*(($L$10*12*(Cohorts!$K$31+Earnings!$L$15)/1.6)*(1+Cohorts!$J$31))*(1+Earnings!$L$12)^Z$47 ->  | AB56: =Cohorts!AD75*(($L$10*12*(Cohorts!$K$31+Earnings!$L$15)/1.6)*(1+Cohorts!$J$31))*(1+Earnings!$L$12)^AA$47 ->  | AC56: =Cohorts!AE75*(($L$10*12*(Cohorts!$K$31+Earnings!$L$15)/1.6)*(1+Cohorts!$J$31))*(1+Earnings!$L$12)^AB$47 ->  | AD56: =Cohorts!AF75*(($L$10*12*(Cohorts!$K$31+Earnings!$L$15)/1.6)*(1+Cohorts!$J$31))*(1+Earnings!$L$12)^AC$47 ->  | AE56: =Cohorts!AG75*(($L$10*12*(Cohorts!$K$31+Earnings!$L$15)/1.6)*(1+Cohorts!$J$31))*(1+Earnings!$L$12)^AD$47 ->  | AF56: =Cohorts!AH75*(($L$10*12*(Cohorts!$K$31+Earnings!$L$15)/1.6)*(1+Cohorts!$J$31))*(1+Earnings!$L$12)^AE$47 ->  | AG56: =Cohorts!AI75*(($L$10*12*(Cohorts!$K$31+Earnings!$L$15)/1.6)*(1+Cohorts!$J$31))*(1+Earnings!$L$12)^AF$47 -> 
C57: 10th | P57: =Cohorts!R76*(($L$10*12*(Cohorts!$K$31+Earnings!$L$15)/1.6)*(1+Cohorts!$J$31))*(1+Earnings!$L$12)^O$47 ->  | Q57: =Cohorts!S76*(($L$10*12*(Cohorts!$K$31+Earnings!$L$15)/1.6)*(1+Cohorts!$J$31))*(1+Earnings!$L$12)^P$47 ->  | R57: =Cohorts!T76*(($L$10*12*(Cohorts!$K$31+Earnings!$L$15)/1.6)*(1+Cohorts!$J$31))*(1+Earnings!$L$12)^Q$47 ->  | S57: =Cohorts!U76*(($L$10*12*(Cohorts!$K$31+Earnings!$L$15)/1.6)*(1+Cohorts!$J$31))*(1+Earnings!$L$12)^R$47 ->  | T57: =Cohorts!V76*(($L$10*12*(Cohorts!$K$31+Earnings!$L$15)/1.6)*(1+Cohorts!$J$31))*(1+Earnings!$L$12)^S$47 ->  | U57: =Cohorts!W76*(($L$10*12*(Cohorts!$K$31+Earnings!$L$15)/1.6)*(1+Cohorts!$J$31))*(1+Earnings!$L$12)^T$47 ->  | V57: =Cohorts!X76*(($L$10*12*(Cohorts!$K$31+Earnings!$L$15)/1.6)*(1+Cohorts!$J$31))*(1+Earnings!$L$12)^U$47 ->  | W57: =Cohorts!Y76*(($L$10*12*(Cohorts!$K$31+Earnings!$L$15)/1.6)*(1+Cohorts!$J$31))*(1+Earnings!$L$12)^V$47 ->  | X57: =Cohorts!Z76*(($L$10*12*(Cohorts!$K$31+Earnings!$L$15)/1.6)*(1+Cohorts!$J$31))*(1+Earnings!$L$12)^W$47 ->  | Y57: =Cohorts!AA76*(($L$10*12*(Cohorts!$K$31+Earnings!$L$15)/1.6)*(1+Cohorts!$J$31))*(1+Earnings!$L$12)^X$47 ->  | Z57: =Cohorts!AB76*(($L$10*12*(Cohorts!$K$31+Earnings!$L$15)/1.6)*(1+Cohorts!$J$31))*(1+Earnings!$L$12)^Y$47 ->  | AA57: =Cohorts!AC76*(($L$10*12*(Cohorts!$K$31+Earnings!$L$15)/1.6)*(1+Cohorts!$J$31))*(1+Earnings!$L$12)^Z$47 ->  | AB57: =Cohorts!AD76*(($L$10*12*(Cohorts!$K$31+Earnings!$L$15)/1.6)*(1+Cohorts!$J$31))*(1+Earnings!$L$12)^AA$47 ->  | AC57: =Cohorts!AE76*(($L$10*12*(Cohorts!$K$31+Earnings!$L$15)/1.6)*(1+Cohorts!$J$31))*(1+Earnings!$L$12)^AB$47 ->  | AD57: =Cohorts!AF76*(($L$10*12*(Cohorts!$K$31+Earnings!$L$15)/1.6)*(1+Cohorts!$J$31))*(1+Earnings!$L$12)^AC$47 ->  | AE57: =Cohorts!AG76*(($L$10*12*(Cohorts!$K$31+Earnings!$L$15)/1.6)*(1+Cohorts!$J$31))*(1+Earnings!$L$12)^AD$47 ->  | AF57: =Cohorts!AH76*(($L$10*12*(Cohorts!$K$31+Earnings!$L$15)/1.6)*(1+Cohorts!$J$31))*(1+Earnings!$L$12)^AE$47 ->  | AG57: =Cohorts!AI76*(($L$10*12*(Cohorts!$K$31+Earnings!$L$15)/1.6)*(1+Cohorts!$J$31))*(1+Earnings!$L$12)^AF$47 ->  | AH57: =Cohorts!AJ76*(($L$10*12*(Cohorts!$K$31+Earnings!$L$15)/1.6)*(1+Cohorts!$J$31))*(1+Earnings!$L$12)^AG$47 -> 
C58: 11th | Q58: =Cohorts!S77*(($L$10*12*(Cohorts!$K$31+Earnings!$L$15)/1.6)*(1+Cohorts!$J$31))*(1+Earnings!$L$12)^P$47 ->  | R58: =Cohorts!T77*(($L$10*12*(Cohorts!$K$31+Earnings!$L$15)/1.6)*(1+Cohorts!$J$31))*(1+Earnings!$L$12)^Q$47 ->  | S58: =Cohorts!U77*(($L$10*12*(Cohorts!$K$31+Earnings!$L$15)/1.6)*(1+Cohorts!$J$31))*(1+Earnings!$L$12)^R$47 ->  | T58: =Cohorts!V77*(($L$10*12*(Cohorts!$K$31+Earnings!$L$15)/1.6)*(1+Cohorts!$J$31))*(1+Earnings!$L$12)^S$47 ->  | U58: =Cohorts!W77*(($L$10*12*(Cohorts!$K$31+Earnings!$L$15)/1.6)*(1+Cohorts!$J$31))*(1+Earnings!$L$12)^T$47 ->  | V58: =Cohorts!X77*(($L$10*12*(Cohorts!$K$31+Earnings!$L$15)/1.6)*(1+Cohorts!$J$31))*(1+Earnings!$L$12)^U$47 ->  | W58: =Cohorts!Y77*(($L$10*12*(Cohorts!$K$31+Earnings!$L$15)/1.6)*(1+Cohorts!$J$31))*(1+Earnings!$L$12)^V$47 ->  | X58: =Cohorts!Z77*(($L$10*12*(Cohorts!$K$31+Earnings!$L$15)/1.6)*(1+Cohorts!$J$31))*(1+Earnings!$L$12)^W$47 ->  | Y58: =Cohorts!AA77*(($L$10*12*(Cohorts!$K$31+Earnings!$L$15)/1.6)*(1+Cohorts!$J$31))*(1+Earnings!$L$12)^X$47 ->  | Z58: =Cohorts!AB77*(($L$10*12*(Cohorts!$K$31+Earnings!$L$15)/1.6)*(1+Cohorts!$J$31))*(1+Earnings!$L$12)^Y$47 ->  | AA58: =Cohorts!AC77*(($L$10*12*(Cohorts!$K$31+Earnings!$L$15)/1.6)*(1+Cohorts!$J$31))*(1+Earnings!$L$12)^Z$47 ->  | AB58: =Cohorts!AD77*(($L$10*12*(Cohorts!$K$31+Earnings!$L$15)/1.6)*(1+Cohorts!$J$31))*(1+Earnings!$L$12)^AA$47 ->  | AC58: =Cohorts!AE77*(($L$10*12*(Cohorts!$K$31+Earnings!$L$15)/1.6)*(1+Cohorts!$J$31))*(1+Earnings!$L$12)^AB$47 ->  | AD58: =Cohorts!AF77*(($L$10*12*(Cohorts!$K$31+Earnings!$L$15)/1.6)*(1+Cohorts!$J$31))*(1+Earnings!$L$12)^AC$47 ->  | AE58: =Cohorts!AG77*(($L$10*12*(Cohorts!$K$31+Earnings!$L$15)/1.6)*(1+Cohorts!$J$31))*(1+Earnings!$L$12)^AD$47 ->  | AF58: =Cohorts!AH77*(($L$10*12*(Cohorts!$K$31+Earnings!$L$15)/1.6)*(1+Cohorts!$J$31))*(1+Earnings!$L$12)^AE$47 ->  | AG58: =Cohorts!AI77*(($L$10*12*(Cohorts!$K$31+Earnings!$L$15)/1.6)*(1+Cohorts!$J$31))*(1+Earnings!$L$12)^AF$47 ->  | AH58: =Cohorts!AJ77*(($L$10*12*(Cohorts!$K$31+Earnings!$L$15)/1.6)*(1+Cohorts!$J$31))*(1+Earnings!$L$12)^AG$47 ->  | AI58: =Cohorts!AK77*(($L$10*12*(Cohorts!$K$31+Earnings!$L$15)/1.6)*(1+Cohorts!$J$31))*(1+Earnings!$L$12)^AH$47 -> 
C59: 12th | R59: =Cohorts!T78*(($L$10*12*(Cohorts!$K$31+Earnings!$L$15)/1.6)*(1+Cohorts!$J$31))*(1+Earnings!$L$12)^Q$47 ->  | S59: =Cohorts!U78*(($L$10*12*(Cohorts!$K$31+Earnings!$L$15)/1.6)*(1+Cohorts!$J$31))*(1+Earnings!$L$12)^R$47 ->  | T59: =Cohorts!V78*(($L$10*12*(Cohorts!$K$31+Earnings!$L$15)/1.6)*(1+Cohorts!$J$31))*(1+Earnings!$L$12)^S$47 ->  | U59: =Cohorts!W78*(($L$10*12*(Cohorts!$K$31+Earnings!$L$15)/1.6)*(1+Cohorts!$J$31))*(1+Earnings!$L$12)^T$47 ->  | V59: =Cohorts!X78*(($L$10*12*(Cohorts!$K$31+Earnings!$L$15)/1.6)*(1+Cohorts!$J$31))*(1+Earnings!$L$12)^U$47 ->  | W59: =Cohorts!Y78*(($L$10*12*(Cohorts!$K$31+Earnings!$L$15)/1.6)*(1+Cohorts!$J$31))*(1+Earnings!$L$12)^V$47 ->  | X59: =Cohorts!Z78*(($L$10*12*(Cohorts!$K$31+Earnings!$L$15)/1.6)*(1+Cohorts!$J$31))*(1+Earnings!$L$12)^W$47 ->  | Y59: =Cohorts!AA78*(($L$10*12*(Cohorts!$K$31+Earnings!$L$15)/1.6)*(1+Cohorts!$J$31))*(1+Earnings!$L$12)^X$47 ->  | Z59: =Cohorts!AB78*(($L$10*12*(Cohorts!$K$31+Earnings!$L$15)/1.6)*(1+Cohorts!$J$31))*(1+Earnings!$L$12)^Y$47 ->  | AA59: =Cohorts!AC78*(($L$10*12*(Cohorts!$K$31+Earnings!$L$15)/1.6)*(1+Cohorts!$J$31))*(1+Earnings!$L$12)^Z$47 ->  | AB59: =Cohorts!AD78*(($L$10*12*(Cohorts!$K$31+Earnings!$L$15)/1.6)*(1+Cohorts!$J$31))*(1+Earnings!$L$12)^AA$47 ->  | AC59: =Cohorts!AE78*(($L$10*12*(Cohorts!$K$31+Earnings!$L$15)/1.6)*(1+Cohorts!$J$31))*(1+Earnings!$L$12)^AB$47 ->  | AD59: =Cohorts!AF78*(($L$10*12*(Cohorts!$K$31+Earnings!$L$15)/1.6)*(1+Cohorts!$J$31))*(1+Earnings!$L$12)^AC$47 ->  | AE59: =Cohorts!AG78*(($L$10*12*(Cohorts!$K$31+Earnings!$L$15)/1.6)*(1+Cohorts!$J$31))*(1+Earnings!$L$12)^AD$47 ->  | AF59: =Cohorts!AH78*(($L$10*12*(Cohorts!$K$31+Earnings!$L$15)/1.6)*(1+Cohorts!$J$31))*(1+Earnings!$L$12)^AE$47 ->  | AG59: =Cohorts!AI78*(($L$10*12*(Cohorts!$K$31+Earnings!$L$15)/1.6)*(1+Cohorts!$J$31))*(1+Earnings!$L$12)^AF$47 ->  | AH59: =Cohorts!AJ78*(($L$10*12*(Cohorts!$K$31+Earnings!$L$15)/1.6)*(1+Cohorts!$J$31))*(1+Earnings!$L$12)^AG$47 ->  | AI59: =Cohorts!AK78*(($L$10*12*(Cohorts!$K$31+Earnings!$L$15)/1.6)*(1+Cohorts!$J$31))*(1+Earnings!$L$12)^AH$47 ->  | AJ59: =Cohorts!AL78*(($L$10*12*(Cohorts!$K$31+Earnings!$L$15)/1.6)*(1+Cohorts!$J$31))*(1+Earnings!$L$12)^AI$47 -> 
C60: 13th | S60: =Cohorts!U79*(($L$10*12*(Cohorts!$K$31+Earnings!$L$15)/1.6)*(1+Cohorts!$J$31))*(1+Earnings!$L$12)^R$47 ->  | T60: =Cohorts!V79*(($L$10*12*(Cohorts!$K$31+Earnings!$L$15)/1.6)*(1+Cohorts!$J$31))*(1+Earnings!$L$12)^S$47 ->  | U60: =Cohorts!W79*(($L$10*12*(Cohorts!$K$31+Earnings!$L$15)/1.6)*(1+Cohorts!$J$31))*(1+Earnings!$L$12)^T$47 ->  | V60: =Cohorts!X79*(($L$10*12*(Cohorts!$K$31+Earnings!$L$15)/1.6)*(1+Cohorts!$J$31))*(1+Earnings!$L$12)^U$47 ->  | W60: =Cohorts!Y79*(($L$10*12*(Cohorts!$K$31+Earnings!$L$15)/1.6)*(1+Cohorts!$J$31))*(1+Earnings!$L$12)^V$47 ->  | X60: =Cohorts!Z79*(($L$10*12*(Cohorts!$K$31+Earnings!$L$15)/1.6)*(1+Cohorts!$J$31))*(1+Earnings!$L$12)^W$47 ->  | Y60: =Cohorts!AA79*(($L$10*12*(Cohorts!$K$31+Earnings!$L$15)/1.6)*(1+Cohorts!$J$31))*(1+Earnings!$L$12)^X$47 ->  | Z60: =Cohorts!AB79*(($L$10*12*(Cohorts!$K$31+Earnings!$L$15)/1.6)*(1+Cohorts!$J$31))*(1+Earnings!$L$12)^Y$47 ->  | AA60: =Cohorts!AC79*(($L$10*12*(Cohorts!$K$31+Earnings!$L$15)/1.6)*(1+Cohorts!$J$31))*(1+Earnings!$L$12)^Z$47 ->  | AB60: =Cohorts!AD79*(($L$10*12*(Cohorts!$K$31+Earnings!$L$15)/1.6)*(1+Cohorts!$J$31))*(1+Earnings!$L$12)^AA$47 ->  | AC60: =Cohorts!AE79*(($L$10*12*(Cohorts!$K$31+Earnings!$L$15)/1.6)*(1+Cohorts!$J$31))*(1+Earnings!$L$12)^AB$47 ->  | AD60: =Cohorts!AF79*(($L$10*12*(Cohorts!$K$31+Earnings!$L$15)/1.6)*(1+Cohorts!$J$31))*(1+Earnings!$L$12)^AC$47 ->  | AE60: =Cohorts!AG79*(($L$10*12*(Cohorts!$K$31+Earnings!$L$15)/1.6)*(1+Cohorts!$J$31))*(1+Earnings!$L$12)^AD$47 ->  | AF60: =Cohorts!AH79*(($L$10*12*(Cohorts!$K$31+Earnings!$L$15)/1.6)*(1+Cohorts!$J$31))*(1+Earnings!$L$12)^AE$47 ->  | AG60: =Cohorts!AI79*(($L$10*12*(Cohorts!$K$31+Earnings!$L$15)/1.6)*(1+Cohorts!$J$31))*(1+Earnings!$L$12)^AF$47 ->  | AH60: =Cohorts!AJ79*(($L$10*12*(Cohorts!$K$31+Earnings!$L$15)/1.6)*(1+Cohorts!$J$31))*(1+Earnings!$L$12)^AG$47 ->  | AI60: =Cohorts!AK79*(($L$10*12*(Cohorts!$K$31+Earnings!$L$15)/1.6)*(1+Cohorts!$J$31))*(1+Earnings!$L$12)^AH$47 ->  | AJ60: =Cohorts!AL79*(($L$10*12*(Cohorts!$K$31+Earnings!$L$15)/1.6)*(1+Cohorts!$J$31))*(1+Earnings!$L$12)^AI$47 ->  | AK60: =Cohorts!AM79*(($L$10*12*(Cohorts!$K$31+Earnings!$L$15)/1.6)*(1+Cohorts!$J$31))*(1+Earnings!$L$12)^AJ$47 -> 
C61: 14th | T61: =Cohorts!V80*(($L$10*12*(Cohorts!$K$31+Earnings!$L$15)/1.6)*(1+Cohorts!$J$31))*(1+Earnings!$L$12)^S$47 ->  | U61: =Cohorts!W80*(($L$10*12*(Cohorts!$K$31+Earnings!$L$15)/1.6)*(1+Cohorts!$J$31))*(1+Earnings!$L$12)^T$47 ->  | V61: =Cohorts!X80*(($L$10*12*(Cohorts!$K$31+Earnings!$L$15)/1.6)*(1+Cohorts!$J$31))*(1+Earnings!$L$12)^U$47 ->  | W61: =Cohorts!Y80*(($L$10*12*(Cohorts!$K$31+Earnings!$L$15)/1.6)*(1+Cohorts!$J$31))*(1+Earnings!$L$12)^V$47 ->  | X61: =Cohorts!Z80*(($L$10*12*(Cohorts!$K$31+Earnings!$L$15)/1.6)*(1+Cohorts!$J$31))*(1+Earnings!$L$12)^W$47 ->  | Y61: =Cohorts!AA80*(($L$10*12*(Cohorts!$K$31+Earnings!$L$15)/1.6)*(1+Cohorts!$J$31))*(1+Earnings!$L$12)^X$47 ->  | Z61: =Cohorts!AB80*(($L$10*12*(Cohorts!$K$31+Earnings!$L$15)/1.6)*(1+Cohorts!$J$31))*(1+Earnings!$L$12)^Y$47 ->  | AA61: =Cohorts!AC80*(($L$10*12*(Cohorts!$K$31+Earnings!$L$15)/1.6)*(1+Cohorts!$J$31))*(1+Earnings!$L$12)^Z$47 ->  | AB61: =Cohorts!AD80*(($L$10*12*(Cohorts!$K$31+Earnings!$L$15)/1.6)*(1+Cohorts!$J$31))*(1+Earnings!$L$12)^AA$47 ->  | AC61: =Cohorts!AE80*(($L$10*12*(Cohorts!$K$31+Earnings!$L$15)/1.6)*(1+Cohorts!$J$31))*(1+Earnings!$L$12)^AB$47 ->  | AD61: =Cohorts!AF80*(($L$10*12*(Cohorts!$K$31+Earnings!$L$15)/1.6)*(1+Cohorts!$J$31))*(1+Earnings!$L$12)^AC$47 ->  | AE61: =Cohorts!AG80*(($L$10*12*(Cohorts!$K$31+Earnings!$L$15)/1.6)*(1+Cohorts!$J$31))*(1+Earnings!$L$12)^AD$47 ->  | AF61: =Cohorts!AH80*(($L$10*12*(Cohorts!$K$31+Earnings!$L$15)/1.6)*(1+Cohorts!$J$31))*(1+Earnings!$L$12)^AE$47 ->  | AG61: =Cohorts!AI80*(($L$10*12*(Cohorts!$K$31+Earnings!$L$15)/1.6)*(1+Cohorts!$J$31))*(1+Earnings!$L$12)^AF$47 ->  | AH61: =Cohorts!AJ80*(($L$10*12*(Cohorts!$K$31+Earnings!$L$15)/1.6)*(1+Cohorts!$J$31))*(1+Earnings!$L$12)^AG$47 ->  | AI61: =Cohorts!AK80*(($L$10*12*(Cohorts!$K$31+Earnings!$L$15)/1.6)*(1+Cohorts!$J$31))*(1+Earnings!$L$12)^AH$47 ->  | AJ61: =Cohorts!AL80*(($L$10*12*(Cohorts!$K$31+Earnings!$L$15)/1.6)*(1+Cohorts!$J$31))*(1+Earnings!$L$12)^AI$47 ->  | AK61: =Cohorts!AM80*(($L$10*12*(Cohorts!$K$31+Earnings!$L$15)/1.6)*(1+Cohorts!$J$31))*(1+Earnings!$L$12)^AJ$47 ->  | AL61: =Cohorts!AN80*(($L$10*12*(Cohorts!$K$31+Earnings!$L$15)/1.6)*(1+Cohorts!$J$31))*(1+Earnings!$L$12)^AK$47 -> 
C62: 15th | U62: =Cohorts!W81*(($L$10*12*(Cohorts!$K$31+Earnings!$L$15)/1.6)*(1+Cohorts!$J$31))*(1+Earnings!$L$12)^T$47 ->  | V62: =Cohorts!X81*(($L$10*12*(Cohorts!$K$31+Earnings!$L$15)/1.6)*(1+Cohorts!$J$31))*(1+Earnings!$L$12)^U$47 ->  | W62: =Cohorts!Y81*(($L$10*12*(Cohorts!$K$31+Earnings!$L$15)/1.6)*(1+Cohorts!$J$31))*(1+Earnings!$L$12)^V$47 ->  | X62: =Cohorts!Z81*(($L$10*12*(Cohorts!$K$31+Earnings!$L$15)/1.6)*(1+Cohorts!$J$31))*(1+Earnings!$L$12)^W$47 ->  | Y62: =Cohorts!AA81*(($L$10*12*(Cohorts!$K$31+Earnings!$L$15)/1.6)*(1+Cohorts!$J$31))*(1+Earnings!$L$12)^X$47 ->  | Z62: =Cohorts!AB81*(($L$10*12*(Cohorts!$K$31+Earnings!$L$15)/1.6)*(1+Cohorts!$J$31))*(1+Earnings!$L$12)^Y$47 ->  | AA62: =Cohorts!AC81*(($L$10*12*(Cohorts!$K$31+Earnings!$L$15)/1.6)*(1+Cohorts!$J$31))*(1+Earnings!$L$12)^Z$47 ->  | AB62: =Cohorts!AD81*(($L$10*12*(Cohorts!$K$31+Earnings!$L$15)/1.6)*(1+Cohorts!$J$31))*(1+Earnings!$L$12)^AA$47 ->  | AC62: =Cohorts!AE81*(($L$10*12*(Cohorts!$K$31+Earnings!$L$15)/1.6)*(1+Cohorts!$J$31))*(1+Earnings!$L$12)^AB$47 ->  | AD62: =Cohorts!AF81*(($L$10*12*(Cohorts!$K$31+Earnings!$L$15)/1.6)*(1+Cohorts!$J$31))*(1+Earnings!$L$12)^AC$47 ->  | AE62: =Cohorts!AG81*(($L$10*12*(Cohorts!$K$31+Earnings!$L$15)/1.6)*(1+Cohorts!$J$31))*(1+Earnings!$L$12)^AD$47 ->  | AF62: =Cohorts!AH81*(($L$10*12*(Cohorts!$K$31+Earnings!$L$15)/1.6)*(1+Cohorts!$J$31))*(1+Earnings!$L$12)^AE$47 ->  | AG62: =Cohorts!AI81*(($L$10*12*(Cohorts!$K$31+Earnings!$L$15)/1.6)*(1+Cohorts!$J$31))*(1+Earnings!$L$12)^AF$47 ->  | AH62: =Cohorts!AJ81*(($L$10*12*(Cohorts!$K$31+Earnings!$L$15)/1.6)*(1+Cohorts!$J$31))*(1+Earnings!$L$12)^AG$47 ->  | AI62: =Cohorts!AK81*(($L$10*12*(Cohorts!$K$31+Earnings!$L$15)/1.6)*(1+Cohorts!$J$31))*(1+Earnings!$L$12)^AH$47 ->  | AJ62: =Cohorts!AL81*(($L$10*12*(Cohorts!$K$31+Earnings!$L$15)/1.6)*(1+Cohorts!$J$31))*(1+Earnings!$L$12)^AI$47 ->  | AK62: =Cohorts!AM81*(($L$10*12*(Cohorts!$K$31+Earnings!$L$15)/1.6)*(1+Cohorts!$J$31))*(1+Earnings!$L$12)^AJ$47 ->  | AL62: =Cohorts!AN81*(($L$10*12*(Cohorts!$K$31+Earnings!$L$15)/1.6)*(1+Cohorts!$J$31))*(1+Earnings!$L$12)^AK$47 ->  | AM62: =Cohorts!AO81*(($L$10*12*(Cohorts!$K$31+Earnings!$L$15)/1.6)*(1+Cohorts!$J$31))*(1+Earnings!$L$12)^AL$47 -> 
C63: 16th | V63: =Cohorts!X82*(($L$10*12*(Cohorts!$K$31+Earnings!$L$15)/1.6)*(1+Cohorts!$J$31))*(1+Earnings!$L$12)^U$47 ->  | W63: =Cohorts!Y82*(($L$10*12*(Cohorts!$K$31+Earnings!$L$15)/1.6)*(1+Cohorts!$J$31))*(1+Earnings!$L$12)^V$47 ->  | X63: =Cohorts!Z82*(($L$10*12*(Cohorts!$K$31+Earnings!$L$15)/1.6)*(1+Cohorts!$J$31))*(1+Earnings!$L$12)^W$47 ->  | Y63: =Cohorts!AA82*(($L$10*12*(Cohorts!$K$31+Earnings!$L$15)/1.6)*(1+Cohorts!$J$31))*(1+Earnings!$L$12)^X$47 ->  | Z63: =Cohorts!AB82*(($L$10*12*(Cohorts!$K$31+Earnings!$L$15)/1.6)*(1+Cohorts!$J$31))*(1+Earnings!$L$12)^Y$47 ->  | AA63: =Cohorts!AC82*(($L$10*12*(Cohorts!$K$31+Earnings!$L$15)/1.6)*(1+Cohorts!$J$31))*(1+Earnings!$L$12)^Z$47 ->  | AB63: =Cohorts!AD82*(($L$10*12*(Cohorts!$K$31+Earnings!$L$15)/1.6)*(1+Cohorts!$J$31))*(1+Earnings!$L$12)^AA$47 ->  | AC63: =Cohorts!AE82*(($L$10*12*(Cohorts!$K$31+Earnings!$L$15)/1.6)*(1+Cohorts!$J$31))*(1+Earnings!$L$12)^AB$47 ->  | AD63: =Cohorts!AF82*(($L$10*12*(Cohorts!$K$31+Earnings!$L$15)/1.6)*(1+Cohorts!$J$31))*(1+Earnings!$L$12)^AC$47 ->  | AE63: =Cohorts!AG82*(($L$10*12*(Cohorts!$K$31+Earnings!$L$15)/1.6)*(1+Cohorts!$J$31))*(1+Earnings!$L$12)^AD$47 ->  | AF63: =Cohorts!AH82*(($L$10*12*(Cohorts!$K$31+Earnings!$L$15)/1.6)*(1+Cohorts!$J$31))*(1+Earnings!$L$12)^AE$47 ->  | AG63: =Cohorts!AI82*(($L$10*12*(Cohorts!$K$31+Earnings!$L$15)/1.6)*(1+Cohorts!$J$31))*(1+Earnings!$L$12)^AF$47 ->  | AH63: =Cohorts!AJ82*(($L$10*12*(Cohorts!$K$31+Earnings!$L$15)/1.6)*(1+Cohorts!$J$31))*(1+Earnings!$L$12)^AG$47 ->  | AI63: =Cohorts!AK82*(($L$10*12*(Cohorts!$K$31+Earnings!$L$15)/1.6)*(1+Cohorts!$J$31))*(1+Earnings!$L$12)^AH$47 ->  | AJ63: =Cohorts!AL82*(($L$10*12*(Cohorts!$K$31+Earnings!$L$15)/1.6)*(1+Cohorts!$J$31))*(1+Earnings!$L$12)^AI$47 ->  | AK63: =Cohorts!AM82*(($L$10*12*(Cohorts!$K$31+Earnings!$L$15)/1.6)*(1+Cohorts!$J$31))*(1+Earnings!$L$12)^AJ$47 ->  | AL63: =Cohorts!AN82*(($L$10*12*(Cohorts!$K$31+Earnings!$L$15)/1.6)*(1+Cohorts!$J$31))*(1+Earnings!$L$12)^AK$47 ->  | AM63: =Cohorts!AO82*(($L$10*12*(Cohorts!$K$31+Earnings!$L$15)/1.6)*(1+Cohorts!$J$31))*(1+Earnings!$L$12)^AL$47 ->  | AN63: =Cohorts!AP82*(($L$10*12*(Cohorts!$K$31+Earnings!$L$15)/1.6)*(1+Cohorts!$J$31))*(1+Earnings!$L$12)^AM$47 -> 
C64: 17th | W64: =Cohorts!Y83*(($L$10*12*(Cohorts!$K$31+Earnings!$L$15)/1.6)*(1+Cohorts!$J$31))*(1+Earnings!$L$12)^V$47 ->  | X64: =Cohorts!Z83*(($L$10*12*(Cohorts!$K$31+Earnings!$L$15)/1.6)*(1+Cohorts!$J$31))*(1+Earnings!$L$12)^W$47 ->  | Y64: =Cohorts!AA83*(($L$10*12*(Cohorts!$K$31+Earnings!$L$15)/1.6)*(1+Cohorts!$J$31))*(1+Earnings!$L$12)^X$47 ->  | Z64: =Cohorts!AB83*(($L$10*12*(Cohorts!$K$31+Earnings!$L$15)/1.6)*(1+Cohorts!$J$31))*(1+Earnings!$L$12)^Y$47 ->  | AA64: =Cohorts!AC83*(($L$10*12*(Cohorts!$K$31+Earnings!$L$15)/1.6)*(1+Cohorts!$J$31))*(1+Earnings!$L$12)^Z$47 ->  | AB64: =Cohorts!AD83*(($L$10*12*(Cohorts!$K$31+Earnings!$L$15)/1.6)*(1+Cohorts!$J$31))*(1+Earnings!$L$12)^AA$47 ->  | AC64: =Cohorts!AE83*(($L$10*12*(Cohorts!$K$31+Earnings!$L$15)/1.6)*(1+Cohorts!$J$31))*(1+Earnings!$L$12)^AB$47 ->  | AD64: =Cohorts!AF83*(($L$10*12*(Cohorts!$K$31+Earnings!$L$15)/1.6)*(1+Cohorts!$J$31))*(1+Earnings!$L$12)^AC$47 ->  | AE64: =Cohorts!AG83*(($L$10*12*(Cohorts!$K$31+Earnings!$L$15)/1.6)*(1+Cohorts!$J$31))*(1+Earnings!$L$12)^AD$47 ->  | AF64: =Cohorts!AH83*(($L$10*12*(Cohorts!$K$31+Earnings!$L$15)/1.6)*(1+Cohorts!$J$31))*(1+Earnings!$L$12)^AE$47 ->  | AG64: =Cohorts!AI83*(($L$10*12*(Cohorts!$K$31+Earnings!$L$15)/1.6)*(1+Cohorts!$J$31))*(1+Earnings!$L$12)^AF$47 ->  | AH64: =Cohorts!AJ83*(($L$10*12*(Cohorts!$K$31+Earnings!$L$15)/1.6)*(1+Cohorts!$J$31))*(1+Earnings!$L$12)^AG$47 ->  | AI64: =Cohorts!AK83*(($L$10*12*(Cohorts!$K$31+Earnings!$L$15)/1.6)*(1+Cohorts!$J$31))*(1+Earnings!$L$12)^AH$47 ->  | AJ64: =Cohorts!AL83*(($L$10*12*(Cohorts!$K$31+Earnings!$L$15)/1.6)*(1+Cohorts!$J$31))*(1+Earnings!$L$12)^AI$47 ->  | AK64: =Cohorts!AM83*(($L$10*12*(Cohorts!$K$31+Earnings!$L$15)/1.6)*(1+Cohorts!$J$31))*(1+Earnings!$L$12)^AJ$47 ->  | AL64: =Cohorts!AN83*(($L$10*12*(Cohorts!$K$31+Earnings!$L$15)/1.6)*(1+Cohorts!$J$31))*(1+Earnings!$L$12)^AK$47 ->  | AM64: =Cohorts!AO83*(($L$10*12*(Cohorts!$K$31+Earnings!$L$15)/1.6)*(1+Cohorts!$J$31))*(1+Earnings!$L$12)^AL$47 ->  | AN64: =Cohorts!AP83*(($L$10*12*(Cohorts!$K$31+Earnings!$L$15)/1.6)*(1+Cohorts!$J$31))*(1+Earnings!$L$12)^AM$47 ->  | AO64: =Cohorts!AQ83*(($L$10*12*(Cohorts!$K$31+Earnings!$L$15)/1.6)*(1+Cohorts!$J$31))*(1+Earnings!$L$12)^AN$47 -> 
C65: 18th | X65: =Cohorts!Z84*(($L$10*12*(Cohorts!$K$31+Earnings!$L$15)/1.6)*(1+Cohorts!$J$31))*(1+Earnings!$L$12)^W$47 ->  | Y65: =Cohorts!AA84*(($L$10*12*(Cohorts!$K$31+Earnings!$L$15)/1.6)*(1+Cohorts!$J$31))*(1+Earnings!$L$12)^X$47 ->  | Z65: =Cohorts!AB84*(($L$10*12*(Cohorts!$K$31+Earnings!$L$15)/1.6)*(1+Cohorts!$J$31))*(1+Earnings!$L$12)^Y$47 ->  | AA65: =Cohorts!AC84*(($L$10*12*(Cohorts!$K$31+Earnings!$L$15)/1.6)*(1+Cohorts!$J$31))*(1+Earnings!$L$12)^Z$47 ->  | AB65: =Cohorts!AD84*(($L$10*12*(Cohorts!$K$31+Earnings!$L$15)/1.6)*(1+Cohorts!$J$31))*(1+Earnings!$L$12)^AA$47 ->  | AC65: =Cohorts!AE84*(($L$10*12*(Cohorts!$K$31+Earnings!$L$15)/1.6)*(1+Cohorts!$J$31))*(1+Earnings!$L$12)^AB$47 ->  | AD65: =Cohorts!AF84*(($L$10*12*(Cohorts!$K$31+Earnings!$L$15)/1.6)*(1+Cohorts!$J$31))*(1+Earnings!$L$12)^AC$47 ->  | AE65: =Cohorts!AG84*(($L$10*12*(Cohorts!$K$31+Earnings!$L$15)/1.6)*(1+Cohorts!$J$31))*(1+Earnings!$L$12)^AD$47 ->  | AF65: =Cohorts!AH84*(($L$10*12*(Cohorts!$K$31+Earnings!$L$15)/1.6)*(1+Cohorts!$J$31))*(1+Earnings!$L$12)^AE$47 ->  | AG65: =Cohorts!AI84*(($L$10*12*(Cohorts!$K$31+Earnings!$L$15)/1.6)*(1+Cohorts!$J$31))*(1+Earnings!$L$12)^AF$47 ->  | AH65: =Cohorts!AJ84*(($L$10*12*(Cohorts!$K$31+Earnings!$L$15)/1.6)*(1+Cohorts!$J$31))*(1+Earnings!$L$12)^AG$47 ->  | AI65: =Cohorts!AK84*(($L$10*12*(Cohorts!$K$31+Earnings!$L$15)/1.6)*(1+Cohorts!$J$31))*(1+Earnings!$L$12)^AH$47 ->  | AJ65: =Cohorts!AL84*(($L$10*12*(Cohorts!$K$31+Earnings!$L$15)/1.6)*(1+Cohorts!$J$31))*(1+Earnings!$L$12)^AI$47 ->  | AK65: =Cohorts!AM84*(($L$10*12*(Cohorts!$K$31+Earnings!$L$15)/1.6)*(1+Cohorts!$J$31))*(1+Earnings!$L$12)^AJ$47 ->  | AL65: =Cohorts!AN84*(($L$10*12*(Cohorts!$K$31+Earnings!$L$15)/1.6)*(1+Cohorts!$J$31))*(1+Earnings!$L$12)^AK$47 ->  | AM65: =Cohorts!AO84*(($L$10*12*(Cohorts!$K$31+Earnings!$L$15)/1.6)*(1+Cohorts!$J$31))*(1+Earnings!$L$12)^AL$47 ->  | AN65: =Cohorts!AP84*(($L$10*12*(Cohorts!$K$31+Earnings!$L$15)/1.6)*(1+Cohorts!$J$31))*(1+Earnings!$L$12)^AM$47 ->  | AO65: =Cohorts!AQ84*(($L$10*12*(Cohorts!$K$31+Earnings!$L$15)/1.6)*(1+Cohorts!$J$31))*(1+Earnings!$L$12)^AN$47 ->  | AP65: =Cohorts!AR84*(($L$10*12*(Cohorts!$K$31+Earnings!$L$15)/1.6)*(1+Cohorts!$J$31))*(1+Earnings!$L$12)^AO$47 -> 
C66: 19th | Y66: =Cohorts!AA85*(($L$10*12*(Cohorts!$K$31+Earnings!$L$15)/1.6)*(1+Cohorts!$J$31))*(1+Earnings!$L$12)^X$47 ->  | Z66: =Cohorts!AB85*(($L$10*12*(Cohorts!$K$31+Earnings!$L$15)/1.6)*(1+Cohorts!$J$31))*(1+Earnings!$L$12)^Y$47 ->  | AA66: =Cohorts!AC85*(($L$10*12*(Cohorts!$K$31+Earnings!$L$15)/1.6)*(1+Cohorts!$J$31))*(1+Earnings!$L$12)^Z$47 ->  | AB66: =Cohorts!AD85*(($L$10*12*(Cohorts!$K$31+Earnings!$L$15)/1.6)*(1+Cohorts!$J$31))*(1+Earnings!$L$12)^AA$47 ->  | AC66: =Cohorts!AE85*(($L$10*12*(Cohorts!$K$31+Earnings!$L$15)/1.6)*(1+Cohorts!$J$31))*(1+Earnings!$L$12)^AB$47 ->  | AD66: =Cohorts!AF85*(($L$10*12*(Cohorts!$K$31+Earnings!$L$15)/1.6)*(1+Cohorts!$J$31))*(1+Earnings!$L$12)^AC$47 ->  | AE66: =Cohorts!AG85*(($L$10*12*(Cohorts!$K$31+Earnings!$L$15)/1.6)*(1+Cohorts!$J$31))*(1+Earnings!$L$12)^AD$47 ->  | AF66: =Cohorts!AH85*(($L$10*12*(Cohorts!$K$31+Earnings!$L$15)/1.6)*(1+Cohorts!$J$31))*(1+Earnings!$L$12)^AE$47 ->  | AG66: =Cohorts!AI85*(($L$10*12*(Cohorts!$K$31+Earnings!$L$15)/1.6)*(1+Cohorts!$J$31))*(1+Earnings!$L$12)^AF$47 ->  | AH66: =Cohorts!AJ85*(($L$10*12*(Cohorts!$K$31+Earnings!$L$15)/1.6)*(1+Cohorts!$J$31))*(1+Earnings!$L$12)^AG$47 ->  | AI66: =Cohorts!AK85*(($L$10*12*(Cohorts!$K$31+Earnings!$L$15)/1.6)*(1+Cohorts!$J$31))*(1+Earnings!$L$12)^AH$47 ->  | AJ66: =Cohorts!AL85*(($L$10*12*(Cohorts!$K$31+Earnings!$L$15)/1.6)*(1+Cohorts!$J$31))*(1+Earnings!$L$12)^AI$47 ->  | AK66: =Cohorts!AM85*(($L$10*12*(Cohorts!$K$31+Earnings!$L$15)/1.6)*(1+Cohorts!$J$31))*(1+Earnings!$L$12)^AJ$47 ->  | AL66: =Cohorts!AN85*(($L$10*12*(Cohorts!$K$31+Earnings!$L$15)/1.6)*(1+Cohorts!$J$31))*(1+Earnings!$L$12)^AK$47 ->  | AM66: =Cohorts!AO85*(($L$10*12*(Cohorts!$K$31+Earnings!$L$15)/1.6)*(1+Cohorts!$J$31))*(1+Earnings!$L$12)^AL$47 ->  | AN66: =Cohorts!AP85*(($L$10*12*(Cohorts!$K$31+Earnings!$L$15)/1.6)*(1+Cohorts!$J$31))*(1+Earnings!$L$12)^AM$47 ->  | AO66: =Cohorts!AQ85*(($L$10*12*(Cohorts!$K$31+Earnings!$L$15)/1.6)*(1+Cohorts!$J$31))*(1+Earnings!$L$12)^AN$47 ->  | AP66: =Cohorts!AR85*(($L$10*12*(Cohorts!$K$31+Earnings!$L$15)/1.6)*(1+Cohorts!$J$31))*(1+Earnings!$L$12)^AO$47 ->  | AQ66: =Cohorts!AS85*(($L$10*12*(Cohorts!$K$31+Earnings!$L$15)/1.6)*(1+Cohorts!$J$31))*(1+Earnings!$L$12)^AP$47 -> 
C67: 20th | Z67: =Cohorts!AB86*(($L$10*12*(Cohorts!$K$31+Earnings!$L$15)/1.6)*(1+Cohorts!$J$31))*(1+Earnings!$L$12)^Y$47 ->  | AA67: =Cohorts!AC86*(($L$10*12*(Cohorts!$K$31+Earnings!$L$15)/1.6)*(1+Cohorts!$J$31))*(1+Earnings!$L$12)^Z$47 ->  | AB67: =Cohorts!AD86*(($L$10*12*(Cohorts!$K$31+Earnings!$L$15)/1.6)*(1+Cohorts!$J$31))*(1+Earnings!$L$12)^AA$47 ->  | AC67: =Cohorts!AE86*(($L$10*12*(Cohorts!$K$31+Earnings!$L$15)/1.6)*(1+Cohorts!$J$31))*(1+Earnings!$L$12)^AB$47 ->  | AD67: =Cohorts!AF86*(($L$10*12*(Cohorts!$K$31+Earnings!$L$15)/1.6)*(1+Cohorts!$J$31))*(1+Earnings!$L$12)^AC$47 ->  | AE67: =Cohorts!AG86*(($L$10*12*(Cohorts!$K$31+Earnings!$L$15)/1.6)*(1+Cohorts!$J$31))*(1+Earnings!$L$12)^AD$47 ->  | AF67: =Cohorts!AH86*(($L$10*12*(Cohorts!$K$31+Earnings!$L$15)/1.6)*(1+Cohorts!$J$31))*(1+Earnings!$L$12)^AE$47 ->  | AG67: =Cohorts!AI86*(($L$10*12*(Cohorts!$K$31+Earnings!$L$15)/1.6)*(1+Cohorts!$J$31))*(1+Earnings!$L$12)^AF$47 ->  | AH67: =Cohorts!AJ86*(($L$10*12*(Cohorts!$K$31+Earnings!$L$15)/1.6)*(1+Cohorts!$J$31))*(1+Earnings!$L$12)^AG$47 ->  | AI67: =Cohorts!AK86*(($L$10*12*(Cohorts!$K$31+Earnings!$L$15)/1.6)*(1+Cohorts!$J$31))*(1+Earnings!$L$12)^AH$47 ->  | AJ67: =Cohorts!AL86*(($L$10*12*(Cohorts!$K$31+Earnings!$L$15)/1.6)*(1+Cohorts!$J$31))*(1+Earnings!$L$12)^AI$47 ->  | AK67: =Cohorts!AM86*(($L$10*12*(Cohorts!$K$31+Earnings!$L$15)/1.6)*(1+Cohorts!$J$31))*(1+Earnings!$L$12)^AJ$47 ->  | AL67: =Cohorts!AN86*(($L$10*12*(Cohorts!$K$31+Earnings!$L$15)/1.6)*(1+Cohorts!$J$31))*(1+Earnings!$L$12)^AK$47 ->  | AM67: =Cohorts!AO86*(($L$10*12*(Cohorts!$K$31+Earnings!$L$15)/1.6)*(1+Cohorts!$J$31))*(1+Earnings!$L$12)^AL$47 ->  | AN67: =Cohorts!AP86*(($L$10*12*(Cohorts!$K$31+Earnings!$L$15)/1.6)*(1+Cohorts!$J$31))*(1+Earnings!$L$12)^AM$47 ->  | AO67: =Cohorts!AQ86*(($L$10*12*(Cohorts!$K$31+Earnings!$L$15)/1.6)*(1+Cohorts!$J$31))*(1+Earnings!$L$12)^AN$47 ->  | AP67: =Cohorts!AR86*(($L$10*12*(Cohorts!$K$31+Earnings!$L$15)/1.6)*(1+Cohorts!$J$31))*(1+Earnings!$L$12)^AO$47 ->  | AQ67: =Cohorts!AS86*(($L$10*12*(Cohorts!$K$31+Earnings!$L$15)/1.6)*(1+Cohorts!$J$31))*(1+Earnings!$L$12)^AP$47 ->  | AR67: =Cohorts!AT86*(($L$10*12*(Cohorts!$K$31+Earnings!$L$15)/1.6)*(1+Cohorts!$J$31))*(1+Earnings!$L$12)^AQ$47 -> 
B68: Earnings for Proposal 2 | C68: 1st | G68: =Cohorts!I87*(($L$10*12*(Cohorts!$K$32+Earnings!$L$15)/1.6)*(1+Cohorts!$J$32))*(1+Earnings!$L$12)^F$47 ->  | H68: =Cohorts!J87*(($L$10*12*(Cohorts!$K$32+Earnings!$L$15)/1.6)*(1+Cohorts!$J$32))*(1+Earnings!$L$12)^G$47 ->  | I68: =Cohorts!K87*(($L$10*12*(Cohorts!$K$32+Earnings!$L$15)/1.6)*(1+Cohorts!$J$32))*(1+Earnings!$L$12)^H$47 ->  | J68: =Cohorts!L87*(($L$10*12*(Cohorts!$K$32+Earnings!$L$15)/1.6)*(1+Cohorts!$J$32))*(1+Earnings!$L$12)^I$47 ->  | K68: =Cohorts!M87*(($L$10*12*(Cohorts!$K$32+Earnings!$L$15)/1.6)*(1+Cohorts!$J$32))*(1+Earnings!$L$12)^J$47 ->  | L68: =Cohorts!N87*(($L$10*12*(Cohorts!$K$32+Earnings!$L$15)/1.6)*(1+Cohorts!$J$32))*(1+Earnings!$L$12)^K$47 ->  | M68: =Cohorts!O87*(($L$10*12*(Cohorts!$K$32+Earnings!$L$15)/1.6)*(1+Cohorts!$J$32))*(1+Earnings!$L$12)^L$47 ->  | N68: =Cohorts!P87*(($L$10*12*(Cohorts!$K$32+Earnings!$L$15)/1.6)*(1+Cohorts!$J$32))*(1+Earnings!$L$12)^M$47 ->  | O68: =Cohorts!Q87*(($L$10*12*(Cohorts!$K$32+Earnings!$L$15)/1.6)*(1+Cohorts!$J$32))*(1+Earnings!$L$12)^N$47 ->  | P68: =Cohorts!R87*(($L$10*12*(Cohorts!$K$32+Earnings!$L$15)/1.6)*(1+Cohorts!$J$32))*(1+Earnings!$L$12)^O$47 ->  | Q68: =Cohorts!S87*(($L$10*12*(Cohorts!$K$32+Earnings!$L$15)/1.6)*(1+Cohorts!$J$32))*(1+Earnings!$L$12)^P$47 ->  | R68: =Cohorts!T87*(($L$10*12*(Cohorts!$K$32+Earnings!$L$15)/1.6)*(1+Cohorts!$J$32))*(1+Earnings!$L$12)^Q$47 ->  | S68: =Cohorts!U87*(($L$10*12*(Cohorts!$K$32+Earnings!$L$15)/1.6)*(1+Cohorts!$J$32))*(1+Earnings!$L$12)^R$47 ->  | T68: =Cohorts!V87*(($L$10*12*(Cohorts!$K$32+Earnings!$L$15)/1.6)*(1+Cohorts!$J$32))*(1+Earnings!$L$12)^S$47 ->  | U68: =Cohorts!W87*(($L$10*12*(Cohorts!$K$32+Earnings!$L$15)/1.6)*(1+Cohorts!$J$32))*(1+Earnings!$L$12)^T$47 ->  | V68: =Cohorts!X87*(($L$10*12*(Cohorts!$K$32+Earnings!$L$15)/1.6)*(1+Cohorts!$J$32))*(1+Earnings!$L$12)^U$47 ->  | W68: =Cohorts!Y87*(($L$10*12*(Cohorts!$K$32+Earnings!$L$15)/1.6)*(1+Cohorts!$J$32))*(1+Earnings!$L$12)^V$47 ->  | X68: =Cohorts!Z87*(($L$10*12*(Cohorts!$K$32+Earnings!$L$15)/1.6)*(1+Cohorts!$J$32))*(1+Earnings!$L$12)^W$47 ->  | Y68: =Cohorts!AA87*(($L$10*12*(Cohorts!$K$32+Earnings!$L$15)/1.6)*(1+Cohorts!$J$32))*(1+Earnings!$L$12)^X$47 -> 
C69: 2nd | H69: =Cohorts!J88*(($L$10*12*(Cohorts!$K$32+Earnings!$L$15)/1.6)*(1+Cohorts!$J$32))*(1+Earnings!$L$12)^G$47 ->  | I69: =Cohorts!K88*(($L$10*12*(Cohorts!$K$32+Earnings!$L$15)/1.6)*(1+Cohorts!$J$32))*(1+Earnings!$L$12)^H$47 ->  | J69: =Cohorts!L88*(($L$10*12*(Cohorts!$K$32+Earnings!$L$15)/1.6)*(1+Cohorts!$J$32))*(1+Earnings!$L$12)^I$47 ->  | K69: =Cohorts!M88*(($L$10*12*(Cohorts!$K$32+Earnings!$L$15)/1.6)*(1+Cohorts!$J$32))*(1+Earnings!$L$12)^J$47 ->  | L69: =Cohorts!N88*(($L$10*12*(Cohorts!$K$32+Earnings!$L$15)/1.6)*(1+Cohorts!$J$32))*(1+Earnings!$L$12)^K$47 ->  | M69: =Cohorts!O88*(($L$10*12*(Cohorts!$K$32+Earnings!$L$15)/1.6)*(1+Cohorts!$J$32))*(1+Earnings!$L$12)^L$47 ->  | N69: =Cohorts!P88*(($L$10*12*(Cohorts!$K$32+Earnings!$L$15)/1.6)*(1+Cohorts!$J$32))*(1+Earnings!$L$12)^M$47 ->  | O69: =Cohorts!Q88*(($L$10*12*(Cohorts!$K$32+Earnings!$L$15)/1.6)*(1+Cohorts!$J$32))*(1+Earnings!$L$12)^N$47 ->  | P69: =Cohorts!R88*(($L$10*12*(Cohorts!$K$32+Earnings!$L$15)/1.6)*(1+Cohorts!$J$32))*(1+Earnings!$L$12)^O$47 ->  | Q69: =Cohorts!S88*(($L$10*12*(Cohorts!$K$32+Earnings!$L$15)/1.6)*(1+Cohorts!$J$32))*(1+Earnings!$L$12)^P$47 ->  | R69: =Cohorts!T88*(($L$10*12*(Cohorts!$K$32+Earnings!$L$15)/1.6)*(1+Cohorts!$J$32))*(1+Earnings!$L$12)^Q$47 ->  | S69: =Cohorts!U88*(($L$10*12*(Cohorts!$K$32+Earnings!$L$15)/1.6)*(1+Cohorts!$J$32))*(1+Earnings!$L$12)^R$47 ->  | T69: =Cohorts!V88*(($L$10*12*(Cohorts!$K$32+Earnings!$L$15)/1.6)*(1+Cohorts!$J$32))*(1+Earnings!$L$12)^S$47 ->  | U69: =Cohorts!W88*(($L$10*12*(Cohorts!$K$32+Earnings!$L$15)/1.6)*(1+Cohorts!$J$32))*(1+Earnings!$L$12)^T$47 ->  | V69: =Cohorts!X88*(($L$10*12*(Cohorts!$K$32+Earnings!$L$15)/1.6)*(1+Cohorts!$J$32))*(1+Earnings!$L$12)^U$47 ->  | W69: =Cohorts!Y88*(($L$10*12*(Cohorts!$K$32+Earnings!$L$15)/1.6)*(1+Cohorts!$J$32))*(1+Earnings!$L$12)^V$47 ->  | X69: =Cohorts!Z88*(($L$10*12*(Cohorts!$K$32+Earnings!$L$15)/1.6)*(1+Cohorts!$J$32))*(1+Earnings!$L$12)^W$47 ->  | Y69: =Cohorts!AA88*(($L$10*12*(Cohorts!$K$32+Earnings!$L$15)/1.6)*(1+Cohorts!$J$32))*(1+Earnings!$L$12)^X$47 ->  | Z69: =Cohorts!AB88*(($L$10*12*(Cohorts!$K$32+Earnings!$L$15)/1.6)*(1+Cohorts!$J$32))*(1+Earnings!$L$12)^Y$47 -> 
C70: 3rd | I70: =Cohorts!K89*(($L$10*12*(Cohorts!$K$32+Earnings!$L$15)/1.6)*(1+Cohorts!$J$32))*(1+Earnings!$L$12)^H$47 ->  | J70: =Cohorts!L89*(($L$10*12*(Cohorts!$K$32+Earnings!$L$15)/1.6)*(1+Cohorts!$J$32))*(1+Earnings!$L$12)^I$47 ->  | K70: =Cohorts!M89*(($L$10*12*(Cohorts!$K$32+Earnings!$L$15)/1.6)*(1+Cohorts!$J$32))*(1+Earnings!$L$12)^J$47 ->  | L70: =Cohorts!N89*(($L$10*12*(Cohorts!$K$32+Earnings!$L$15)/1.6)*(1+Cohorts!$J$32))*(1+Earnings!$L$12)^K$47 ->  | M70: =Cohorts!O89*(($L$10*12*(Cohorts!$K$32+Earnings!$L$15)/1.6)*(1+Cohorts!$J$32))*(1+Earnings!$L$12)^L$47 ->  | N70: =Cohorts!P89*(($L$10*12*(Cohorts!$K$32+Earnings!$L$15)/1.6)*(1+Cohorts!$J$32))*(1+Earnings!$L$12)^M$47 ->  | O70: =Cohorts!Q89*(($L$10*12*(Cohorts!$K$32+Earnings!$L$15)/1.6)*(1+Cohorts!$J$32))*(1+Earnings!$L$12)^N$47 ->  | P70: =Cohorts!R89*(($L$10*12*(Cohorts!$K$32+Earnings!$L$15)/1.6)*(1+Cohorts!$J$32))*(1+Earnings!$L$12)^O$47 ->  | Q70: =Cohorts!S89*(($L$10*12*(Cohorts!$K$32+Earnings!$L$15)/1.6)*(1+Cohorts!$J$32))*(1+Earnings!$L$12)^P$47 ->  | R70: =Cohorts!T89*(($L$10*12*(Cohorts!$K$32+Earnings!$L$15)/1.6)*(1+Cohorts!$J$32))*(1+Earnings!$L$12)^Q$47 ->  | S70: =Cohorts!U89*(($L$10*12*(Cohorts!$K$32+Earnings!$L$15)/1.6)*(1+Cohorts!$J$32))*(1+Earnings!$L$12)^R$47 ->  | T70: =Cohorts!V89*(($L$10*12*(Cohorts!$K$32+Earnings!$L$15)/1.6)*(1+Cohorts!$J$32))*(1+Earnings!$L$12)^S$47 ->  | U70: =Cohorts!W89*(($L$10*12*(Cohorts!$K$32+Earnings!$L$15)/1.6)*(1+Cohorts!$J$32))*(1+Earnings!$L$12)^T$47 ->  | V70: =Cohorts!X89*(($L$10*12*(Cohorts!$K$32+Earnings!$L$15)/1.6)*(1+Cohorts!$J$32))*(1+Earnings!$L$12)^U$47 ->  | W70: =Cohorts!Y89*(($L$10*12*(Cohorts!$K$32+Earnings!$L$15)/1.6)*(1+Cohorts!$J$32))*(1+Earnings!$L$12)^V$47 ->  | X70: =Cohorts!Z89*(($L$10*12*(Cohorts!$K$32+Earnings!$L$15)/1.6)*(1+Cohorts!$J$32))*(1+Earnings!$L$12)^W$47 ->  | Y70: =Cohorts!AA89*(($L$10*12*(Cohorts!$K$32+Earnings!$L$15)/1.6)*(1+Cohorts!$J$32))*(1+Earnings!$L$12)^X$47 ->  | Z70: =Cohorts!AB89*(($L$10*12*(Cohorts!$K$32+Earnings!$L$15)/1.6)*(1+Cohorts!$J$32))*(1+Earnings!$L$12)^Y$47 ->  | AA70: =Cohorts!AC89*(($L$10*12*(Cohorts!$K$32+Earnings!$L$15)/1.6)*(1+Cohorts!$J$32))*(1+Earnings!$L$12)^Z$47 -> 
C71: 4th | J71: =Cohorts!L90*(($L$10*12*(Cohorts!$K$32+Earnings!$L$15)/1.6)*(1+Cohorts!$J$32))*(1+Earnings!$L$12)^I$47 ->  | K71: =Cohorts!M90*(($L$10*12*(Cohorts!$K$32+Earnings!$L$15)/1.6)*(1+Cohorts!$J$32))*(1+Earnings!$L$12)^J$47 ->  | L71: =Cohorts!N90*(($L$10*12*(Cohorts!$K$32+Earnings!$L$15)/1.6)*(1+Cohorts!$J$32))*(1+Earnings!$L$12)^K$47 ->  | M71: =Cohorts!O90*(($L$10*12*(Cohorts!$K$32+Earnings!$L$15)/1.6)*(1+Cohorts!$J$32))*(1+Earnings!$L$12)^L$47 ->  | N71: =Cohorts!P90*(($L$10*12*(Cohorts!$K$32+Earnings!$L$15)/1.6)*(1+Cohorts!$J$32))*(1+Earnings!$L$12)^M$47 ->  | O71: =Cohorts!Q90*(($L$10*12*(Cohorts!$K$32+Earnings!$L$15)/1.6)*(1+Cohorts!$J$32))*(1+Earnings!$L$12)^N$47 ->  | P71: =Cohorts!R90*(($L$10*12*(Cohorts!$K$32+Earnings!$L$15)/1.6)*(1+Cohorts!$J$32))*(1+Earnings!$L$12)^O$47 ->  | Q71: =Cohorts!S90*(($L$10*12*(Cohorts!$K$32+Earnings!$L$15)/1.6)*(1+Cohorts!$J$32))*(1+Earnings!$L$12)^P$47 ->  | R71: =Cohorts!T90*(($L$10*12*(Cohorts!$K$32+Earnings!$L$15)/1.6)*(1+Cohorts!$J$32))*(1+Earnings!$L$12)^Q$47 ->  | S71: =Cohorts!U90*(($L$10*12*(Cohorts!$K$32+Earnings!$L$15)/1.6)*(1+Cohorts!$J$32))*(1+Earnings!$L$12)^R$47 ->  | T71: =Cohorts!V90*(($L$10*12*(Cohorts!$K$32+Earnings!$L$15)/1.6)*(1+Cohorts!$J$32))*(1+Earnings!$L$12)^S$47 ->  | U71: =Cohorts!W90*(($L$10*12*(Cohorts!$K$32+Earnings!$L$15)/1.6)*(1+Cohorts!$J$32))*(1+Earnings!$L$12)^T$47 ->  | V71: =Cohorts!X90*(($L$10*12*(Cohorts!$K$32+Earnings!$L$15)/1.6)*(1+Cohorts!$J$32))*(1+Earnings!$L$12)^U$47 ->  | W71: =Cohorts!Y90*(($L$10*12*(Cohorts!$K$32+Earnings!$L$15)/1.6)*(1+Cohorts!$J$32))*(1+Earnings!$L$12)^V$47 ->  | X71: =Cohorts!Z90*(($L$10*12*(Cohorts!$K$32+Earnings!$L$15)/1.6)*(1+Cohorts!$J$32))*(1+Earnings!$L$12)^W$47 ->  | Y71: =Cohorts!AA90*(($L$10*12*(Cohorts!$K$32+Earnings!$L$15)/1.6)*(1+Cohorts!$J$32))*(1+Earnings!$L$12)^X$47 ->  | Z71: =Cohorts!AB90*(($L$10*12*(Cohorts!$K$32+Earnings!$L$15)/1.6)*(1+Cohorts!$J$32))*(1+Earnings!$L$12)^Y$47 ->  | AA71: =Cohorts!AC90*(($L$10*12*(Cohorts!$K$32+Earnings!$L$15)/1.6)*(1+Cohorts!$J$32))*(1+Earnings!$L$12)^Z$47 ->  | AB71: =Cohorts!AD90*(($L$10*12*(Cohorts!$K$32+Earnings!$L$15)/1.6)*(1+Cohorts!$J$32))*(1+Earnings!$L$12)^AA$47 -> 
C72: 5th | K72: =Cohorts!M91*(($L$10*12*(Cohorts!$K$32+Earnings!$L$15)/1.6)*(1+Cohorts!$J$32))*(1+Earnings!$L$12)^J$47 ->  | L72: =Cohorts!N91*(($L$10*12*(Cohorts!$K$32+Earnings!$L$15)/1.6)*(1+Cohorts!$J$32))*(1+Earnings!$L$12)^K$47 ->  | M72: =Cohorts!O91*(($L$10*12*(Cohorts!$K$32+Earnings!$L$15)/1.6)*(1+Cohorts!$J$32))*(1+Earnings!$L$12)^L$47 ->  | N72: =Cohorts!P91*(($L$10*12*(Cohorts!$K$32+Earnings!$L$15)/1.6)*(1+Cohorts!$J$32))*(1+Earnings!$L$12)^M$47 ->  | O72: =Cohorts!Q91*(($L$10*12*(Cohorts!$K$32+Earnings!$L$15)/1.6)*(1+Cohorts!$J$32))*(1+Earnings!$L$12)^N$47 ->  | P72: =Cohorts!R91*(($L$10*12*(Cohorts!$K$32+Earnings!$L$15)/1.6)*(1+Cohorts!$J$32))*(1+Earnings!$L$12)^O$47 ->  | Q72: =Cohorts!S91*(($L$10*12*(Cohorts!$K$32+Earnings!$L$15)/1.6)*(1+Cohorts!$J$32))*(1+Earnings!$L$12)^P$47 ->  | R72: =Cohorts!T91*(($L$10*12*(Cohorts!$K$32+Earnings!$L$15)/1.6)*(1+Cohorts!$J$32))*(1+Earnings!$L$12)^Q$47 ->  | S72: =Cohorts!U91*(($L$10*12*(Cohorts!$K$32+Earnings!$L$15)/1.6)*(1+Cohorts!$J$32))*(1+Earnings!$L$12)^R$47 ->  | T72: =Cohorts!V91*(($L$10*12*(Cohorts!$K$32+Earnings!$L$15)/1.6)*(1+Cohorts!$J$32))*(1+Earnings!$L$12)^S$47 ->  | U72: =Cohorts!W91*(($L$10*12*(Cohorts!$K$32+Earnings!$L$15)/1.6)*(1+Cohorts!$J$32))*(1+Earnings!$L$12)^T$47 ->  | V72: =Cohorts!X91*(($L$10*12*(Cohorts!$K$32+Earnings!$L$15)/1.6)*(1+Cohorts!$J$32))*(1+Earnings!$L$12)^U$47 ->  | W72: =Cohorts!Y91*(($L$10*12*(Cohorts!$K$32+Earnings!$L$15)/1.6)*(1+Cohorts!$J$32))*(1+Earnings!$L$12)^V$47 ->  | X72: =Cohorts!Z91*(($L$10*12*(Cohorts!$K$32+Earnings!$L$15)/1.6)*(1+Cohorts!$J$32))*(1+Earnings!$L$12)^W$47 ->  | Y72: =Cohorts!AA91*(($L$10*12*(Cohorts!$K$32+Earnings!$L$15)/1.6)*(1+Cohorts!$J$32))*(1+Earnings!$L$12)^X$47 ->  | Z72: =Cohorts!AB91*(($L$10*12*(Cohorts!$K$32+Earnings!$L$15)/1.6)*(1+Cohorts!$J$32))*(1+Earnings!$L$12)^Y$47 ->  | AA72: =Cohorts!AC91*(($L$10*12*(Cohorts!$K$32+Earnings!$L$15)/1.6)*(1+Cohorts!$J$32))*(1+Earnings!$L$12)^Z$47 ->  | AB72: =Cohorts!AD91*(($L$10*12*(Cohorts!$K$32+Earnings!$L$15)/1.6)*(1+Cohorts!$J$32))*(1+Earnings!$L$12)^AA$47 ->  | AC72: =Cohorts!AE91*(($L$10*12*(Cohorts!$K$32+Earnings!$L$15)/1.6)*(1+Cohorts!$J$32))*(1+Earnings!$L$12)^AB$47 -> 
C73: 6th | L73: =Cohorts!N92*(($L$10*12*(Cohorts!$K$32+Earnings!$L$15)/1.6)*(1+Cohorts!$J$32))*(1+Earnings!$L$12)^K$47 ->  | M73: =Cohorts!O92*(($L$10*12*(Cohorts!$K$32+Earnings!$L$15)/1.6)*(1+Cohorts!$J$32))*(1+Earnings!$L$12)^L$47 ->  | N73: =Cohorts!P92*(($L$10*12*(Cohorts!$K$32+Earnings!$L$15)/1.6)*(1+Cohorts!$J$32))*(1+Earnings!$L$12)^M$47 ->  | O73: =Cohorts!Q92*(($L$10*12*(Cohorts!$K$32+Earnings!$L$15)/1.6)*(1+Cohorts!$J$32))*(1+Earnings!$L$12)^N$47 ->  | P73: =Cohorts!R92*(($L$10*12*(Cohorts!$K$32+Earnings!$L$15)/1.6)*(1+Cohorts!$J$32))*(1+Earnings!$L$12)^O$47 ->  | Q73: =Cohorts!S92*(($L$10*12*(Cohorts!$K$32+Earnings!$L$15)/1.6)*(1+Cohorts!$J$32))*(1+Earnings!$L$12)^P$47 ->  | R73: =Cohorts!T92*(($L$10*12*(Cohorts!$K$32+Earnings!$L$15)/1.6)*(1+Cohorts!$J$32))*(1+Earnings!$L$12)^Q$47 ->  | S73: =Cohorts!U92*(($L$10*12*(Cohorts!$K$32+Earnings!$L$15)/1.6)*(1+Cohorts!$J$32))*(1+Earnings!$L$12)^R$47 ->  | T73: =Cohorts!V92*(($L$10*12*(Cohorts!$K$32+Earnings!$L$15)/1.6)*(1+Cohorts!$J$32))*(1+Earnings!$L$12)^S$47 ->  | U73: =Cohorts!W92*(($L$10*12*(Cohorts!$K$32+Earnings!$L$15)/1.6)*(1+Cohorts!$J$32))*(1+Earnings!$L$12)^T$47 ->  | V73: =Cohorts!X92*(($L$10*12*(Cohorts!$K$32+Earnings!$L$15)/1.6)*(1+Cohorts!$J$32))*(1+Earnings!$L$12)^U$47 ->  | W73: =Cohorts!Y92*(($L$10*12*(Cohorts!$K$32+Earnings!$L$15)/1.6)*(1+Cohorts!$J$32))*(1+Earnings!$L$12)^V$47 ->  | X73: =Cohorts!Z92*(($L$10*12*(Cohorts!$K$32+Earnings!$L$15)/1.6)*(1+Cohorts!$J$32))*(1+Earnings!$L$12)^W$47 ->  | Y73: =Cohorts!AA92*(($L$10*12*(Cohorts!$K$32+Earnings!$L$15)/1.6)*(1+Cohorts!$J$32))*(1+Earnings!$L$12)^X$47 ->  | Z73: =Cohorts!AB92*(($L$10*12*(Cohorts!$K$32+Earnings!$L$15)/1.6)*(1+Cohorts!$J$32))*(1+Earnings!$L$12)^Y$47 ->  | AA73: =Cohorts!AC92*(($L$10*12*(Cohorts!$K$32+Earnings!$L$15)/1.6)*(1+Cohorts!$J$32))*(1+Earnings!$L$12)^Z$47 ->  | AB73: =Cohorts!AD92*(($L$10*12*(Cohorts!$K$32+Earnings!$L$15)/1.6)*(1+Cohorts!$J$32))*(1+Earnings!$L$12)^AA$47 ->  | AC73: =Cohorts!AE92*(($L$10*12*(Cohorts!$K$32+Earnings!$L$15)/1.6)*(1+Cohorts!$J$32))*(1+Earnings!$L$12)^AB$47 ->  | AD73: =Cohorts!AF92*(($L$10*12*(Cohorts!$K$32+Earnings!$L$15)/1.6)*(1+Cohorts!$J$32))*(1+Earnings!$L$12)^AC$47 -> 
C74: 7th | M74: =Cohorts!O93*(($L$10*12*(Cohorts!$K$32+Earnings!$L$15)/1.6)*(1+Cohorts!$J$32))*(1+Earnings!$L$12)^L$47 ->  | N74: =Cohorts!P93*(($L$10*12*(Cohorts!$K$32+Earnings!$L$15)/1.6)*(1+Cohorts!$J$32))*(1+Earnings!$L$12)^M$47 ->  | O74: =Cohorts!Q93*(($L$10*12*(Cohorts!$K$32+Earnings!$L$15)/1.6)*(1+Cohorts!$J$32))*(1+Earnings!$L$12)^N$47 ->  | P74: =Cohorts!R93*(($L$10*12*(Cohorts!$K$32+Earnings!$L$15)/1.6)*(1+Cohorts!$J$32))*(1+Earnings!$L$12)^O$47 ->  | Q74: =Cohorts!S93*(($L$10*12*(Cohorts!$K$32+Earnings!$L$15)/1.6)*(1+Cohorts!$J$32))*(1+Earnings!$L$12)^P$47 ->  | R74: =Cohorts!T93*(($L$10*12*(Cohorts!$K$32+Earnings!$L$15)/1.6)*(1+Cohorts!$J$32))*(1+Earnings!$L$12)^Q$47 ->  | S74: =Cohorts!U93*(($L$10*12*(Cohorts!$K$32+Earnings!$L$15)/1.6)*(1+Cohorts!$J$32))*(1+Earnings!$L$12)^R$47 ->  | T74: =Cohorts!V93*(($L$10*12*(Cohorts!$K$32+Earnings!$L$15)/1.6)*(1+Cohorts!$J$32))*(1+Earnings!$L$12)^S$47 ->  | U74: =Cohorts!W93*(($L$10*12*(Cohorts!$K$32+Earnings!$L$15)/1.6)*(1+Cohorts!$J$32))*(1+Earnings!$L$12)^T$47 ->  | V74: =Cohorts!X93*(($L$10*12*(Cohorts!$K$32+Earnings!$L$15)/1.6)*(1+Cohorts!$J$32))*(1+Earnings!$L$12)^U$47 ->  | W74: =Cohorts!Y93*(($L$10*12*(Cohorts!$K$32+Earnings!$L$15)/1.6)*(1+Cohorts!$J$32))*(1+Earnings!$L$12)^V$47 ->  | X74: =Cohorts!Z93*(($L$10*12*(Cohorts!$K$32+Earnings!$L$15)/1.6)*(1+Cohorts!$J$32))*(1+Earnings!$L$12)^W$47 ->  | Y74: =Cohorts!AA93*(($L$10*12*(Cohorts!$K$32+Earnings!$L$15)/1.6)*(1+Cohorts!$J$32))*(1+Earnings!$L$12)^X$47 ->  | Z74: =Cohorts!AB93*(($L$10*12*(Cohorts!$K$32+Earnings!$L$15)/1.6)*(1+Cohorts!$J$32))*(1+Earnings!$L$12)^Y$47 ->  | AA74: =Cohorts!AC93*(($L$10*12*(Cohorts!$K$32+Earnings!$L$15)/1.6)*(1+Cohorts!$J$32))*(1+Earnings!$L$12)^Z$47 ->  | AB74: =Cohorts!AD93*(($L$10*12*(Cohorts!$K$32+Earnings!$L$15)/1.6)*(1+Cohorts!$J$32))*(1+Earnings!$L$12)^AA$47 ->  | AC74: =Cohorts!AE93*(($L$10*12*(Cohorts!$K$32+Earnings!$L$15)/1.6)*(1+Cohorts!$J$32))*(1+Earnings!$L$12)^AB$47 ->  | AD74: =Cohorts!AF93*(($L$10*12*(Cohorts!$K$32+Earnings!$L$15)/1.6)*(1+Cohorts!$J$32))*(1+Earnings!$L$12)^AC$47 ->  | AE74: =Cohorts!AG93*(($L$10*12*(Cohorts!$K$32+Earnings!$L$15)/1.6)*(1+Cohorts!$J$32))*(1+Earnings!$L$12)^AD$47 -> 
C75: 8th | N75: =Cohorts!P94*(($L$10*12*(Cohorts!$K$32+Earnings!$L$15)/1.6)*(1+Cohorts!$J$32))*(1+Earnings!$L$12)^M$47 ->  | O75: =Cohorts!Q94*(($L$10*12*(Cohorts!$K$32+Earnings!$L$15)/1.6)*(1+Cohorts!$J$32))*(1+Earnings!$L$12)^N$47 ->  | P75: =Cohorts!R94*(($L$10*12*(Cohorts!$K$32+Earnings!$L$15)/1.6)*(1+Cohorts!$J$32))*(1+Earnings!$L$12)^O$47 ->  | Q75: =Cohorts!S94*(($L$10*12*(Cohorts!$K$32+Earnings!$L$15)/1.6)*(1+Cohorts!$J$32))*(1+Earnings!$L$12)^P$47 ->  | R75: =Cohorts!T94*(($L$10*12*(Cohorts!$K$32+Earnings!$L$15)/1.6)*(1+Cohorts!$J$32))*(1+Earnings!$L$12)^Q$47 ->  | S75: =Cohorts!U94*(($L$10*12*(Cohorts!$K$32+Earnings!$L$15)/1.6)*(1+Cohorts!$J$32))*(1+Earnings!$L$12)^R$47 ->  | T75: =Cohorts!V94*(($L$10*12*(Cohorts!$K$32+Earnings!$L$15)/1.6)*(1+Cohorts!$J$32))*(1+Earnings!$L$12)^S$47 ->  | U75: =Cohorts!W94*(($L$10*12*(Cohorts!$K$32+Earnings!$L$15)/1.6)*(1+Cohorts!$J$32))*(1+Earnings!$L$12)^T$47 ->  | V75: =Cohorts!X94*(($L$10*12*(Cohorts!$K$32+Earnings!$L$15)/1.6)*(1+Cohorts!$J$32))*(1+Earnings!$L$12)^U$47 ->  | W75: =Cohorts!Y94*(($L$10*12*(Cohorts!$K$32+Earnings!$L$15)/1.6)*(1+Cohorts!$J$32))*(1+Earnings!$L$12)^V$47 ->  | X75: =Cohorts!Z94*(($L$10*12*(Cohorts!$K$32+Earnings!$L$15)/1.6)*(1+Cohorts!$J$32))*(1+Earnings!$L$12)^W$47 ->  | Y75: =Cohorts!AA94*(($L$10*12*(Cohorts!$K$32+Earnings!$L$15)/1.6)*(1+Cohorts!$J$32))*(1+Earnings!$L$12)^X$47 ->  | Z75: =Cohorts!AB94*(($L$10*12*(Cohorts!$K$32+Earnings!$L$15)/1.6)*(1+Cohorts!$J$32))*(1+Earnings!$L$12)^Y$47 ->  | AA75: =Cohorts!AC94*(($L$10*12*(Cohorts!$K$32+Earnings!$L$15)/1.6)*(1+Cohorts!$J$32))*(1+Earnings!$L$12)^Z$47 ->  | AB75: =Cohorts!AD94*(($L$10*12*(Cohorts!$K$32+Earnings!$L$15)/1.6)*(1+Cohorts!$J$32))*(1+Earnings!$L$12)^AA$47 ->  | AC75: =Cohorts!AE94*(($L$10*12*(Cohorts!$K$32+Earnings!$L$15)/1.6)*(1+Cohorts!$J$32))*(1+Earnings!$L$12)^AB$47 ->  | AD75: =Cohorts!AF94*(($L$10*12*(Cohorts!$K$32+Earnings!$L$15)/1.6)*(1+Cohorts!$J$32))*(1+Earnings!$L$12)^AC$47 ->  | AE75: =Cohorts!AG94*(($L$10*12*(Cohorts!$K$32+Earnings!$L$15)/1.6)*(1+Cohorts!$J$32))*(1+Earnings!$L$12)^AD$47 ->  | AF75: =Cohorts!AH94*(($L$10*12*(Cohorts!$K$32+Earnings!$L$15)/1.6)*(1+Cohorts!$J$32))*(1+Earnings!$L$12)^AE$47 -> 
C76: 9th | O76: =Cohorts!Q95*(($L$10*12*(Cohorts!$K$32+Earnings!$L$15)/1.6)*(1+Cohorts!$J$32))*(1+Earnings!$L$12)^N$47 ->  | P76: =Cohorts!R95*(($L$10*12*(Cohorts!$K$32+Earnings!$L$15)/1.6)*(1+Cohorts!$J$32))*(1+Earnings!$L$12)^O$47 ->  | Q76: =Cohorts!S95*(($L$10*12*(Cohorts!$K$32+Earnings!$L$15)/1.6)*(1+Cohorts!$J$32))*(1+Earnings!$L$12)^P$47 ->  | R76: =Cohorts!T95*(($L$10*12*(Cohorts!$K$32+Earnings!$L$15)/1.6)*(1+Cohorts!$J$32))*(1+Earnings!$L$12)^Q$47 ->  | S76: =Cohorts!U95*(($L$10*12*(Cohorts!$K$32+Earnings!$L$15)/1.6)*(1+Cohorts!$J$32))*(1+Earnings!$L$12)^R$47 ->  | T76: =Cohorts!V95*(($L$10*12*(Cohorts!$K$32+Earnings!$L$15)/1.6)*(1+Cohorts!$J$32))*(1+Earnings!$L$12)^S$47 ->  | U76: =Cohorts!W95*(($L$10*12*(Cohorts!$K$32+Earnings!$L$15)/1.6)*(1+Cohorts!$J$32))*(1+Earnings!$L$12)^T$47 ->  | V76: =Cohorts!X95*(($L$10*12*(Cohorts!$K$32+Earnings!$L$15)/1.6)*(1+Cohorts!$J$32))*(1+Earnings!$L$12)^U$47 ->  | W76: =Cohorts!Y95*(($L$10*12*(Cohorts!$K$32+Earnings!$L$15)/1.6)*(1+Cohorts!$J$32))*(1+Earnings!$L$12)^V$47 ->  | X76: =Cohorts!Z95*(($L$10*12*(Cohorts!$K$32+Earnings!$L$15)/1.6)*(1+Cohorts!$J$32))*(1+Earnings!$L$12)^W$47 ->  | Y76: =Cohorts!AA95*(($L$10*12*(Cohorts!$K$32+Earnings!$L$15)/1.6)*(1+Cohorts!$J$32))*(1+Earnings!$L$12)^X$47 ->  | Z76: =Cohorts!AB95*(($L$10*12*(Cohorts!$K$32+Earnings!$L$15)/1.6)*(1+Cohorts!$J$32))*(1+Earnings!$L$12)^Y$47 ->  | AA76: =Cohorts!AC95*(($L$10*12*(Cohorts!$K$32+Earnings!$L$15)/1.6)*(1+Cohorts!$J$32))*(1+Earnings!$L$12)^Z$47 ->  | AB76: =Cohorts!AD95*(($L$10*12*(Cohorts!$K$32+Earnings!$L$15)/1.6)*(1+Cohorts!$J$32))*(1+Earnings!$L$12)^AA$47 ->  | AC76: =Cohorts!AE95*(($L$10*12*(Cohorts!$K$32+Earnings!$L$15)/1.6)*(1+Cohorts!$J$32))*(1+Earnings!$L$12)^AB$47 ->  | AD76: =Cohorts!AF95*(($L$10*12*(Cohorts!$K$32+Earnings!$L$15)/1.6)*(1+Cohorts!$J$32))*(1+Earnings!$L$12)^AC$47 ->  | AE76: =Cohorts!AG95*(($L$10*12*(Cohorts!$K$32+Earnings!$L$15)/1.6)*(1+Cohorts!$J$32))*(1+Earnings!$L$12)^AD$47 ->  | AF76: =Cohorts!AH95*(($L$10*12*(Cohorts!$K$32+Earnings!$L$15)/1.6)*(1+Cohorts!$J$32))*(1+Earnings!$L$12)^AE$47 ->  | AG76: =Cohorts!AI95*(($L$10*12*(Cohorts!$K$32+Earnings!$L$15)/1.6)*(1+Cohorts!$J$32))*(1+Earnings!$L$12)^AF$47 -> 
C77: 10th | P77: =Cohorts!R96*(($L$10*12*(Cohorts!$K$32+Earnings!$L$15)/1.6)*(1+Cohorts!$J$32))*(1+Earnings!$L$12)^O$47 ->  | Q77: =Cohorts!S96*(($L$10*12*(Cohorts!$K$32+Earnings!$L$15)/1.6)*(1+Cohorts!$J$32))*(1+Earnings!$L$12)^P$47 ->  | R77: =Cohorts!T96*(($L$10*12*(Cohorts!$K$32+Earnings!$L$15)/1.6)*(1+Cohorts!$J$32))*(1+Earnings!$L$12)^Q$47 ->  | S77: =Cohorts!U96*(($L$10*12*(Cohorts!$K$32+Earnings!$L$15)/1.6)*(1+Cohorts!$J$32))*(1+Earnings!$L$12)^R$47 ->  | T77: =Cohorts!V96*(($L$10*12*(Cohorts!$K$32+Earnings!$L$15)/1.6)*(1+Cohorts!$J$32))*(1+Earnings!$L$12)^S$47 ->  | U77: =Cohorts!W96*(($L$10*12*(Cohorts!$K$32+Earnings!$L$15)/1.6)*(1+Cohorts!$J$32))*(1+Earnings!$L$12)^T$47 ->  | V77: =Cohorts!X96*(($L$10*12*(Cohorts!$K$32+Earnings!$L$15)/1.6)*(1+Cohorts!$J$32))*(1+Earnings!$L$12)^U$47 ->  | W77: =Cohorts!Y96*(($L$10*12*(Cohorts!$K$32+Earnings!$L$15)/1.6)*(1+Cohorts!$J$32))*(1+Earnings!$L$12)^V$47 ->  | X77: =Cohorts!Z96*(($L$10*12*(Cohorts!$K$32+Earnings!$L$15)/1.6)*(1+Cohorts!$J$32))*(1+Earnings!$L$12)^W$47 ->  | Y77: =Cohorts!AA96*(($L$10*12*(Cohorts!$K$32+Earnings!$L$15)/1.6)*(1+Cohorts!$J$32))*(1+Earnings!$L$12)^X$47 ->  | Z77: =Cohorts!AB96*(($L$10*12*(Cohorts!$K$32+Earnings!$L$15)/1.6)*(1+Cohorts!$J$32))*(1+Earnings!$L$12)^Y$47 ->  | AA77: =Cohorts!AC96*(($L$10*12*(Cohorts!$K$32+Earnings!$L$15)/1.6)*(1+Cohorts!$J$32))*(1+Earnings!$L$12)^Z$47 ->  | AB77: =Cohorts!AD96*(($L$10*12*(Cohorts!$K$32+Earnings!$L$15)/1.6)*(1+Cohorts!$J$32))*(1+Earnings!$L$12)^AA$47 ->  | AC77: =Cohorts!AE96*(($L$10*12*(Cohorts!$K$32+Earnings!$L$15)/1.6)*(1+Cohorts!$J$32))*(1+Earnings!$L$12)^AB$47 ->  | AD77: =Cohorts!AF96*(($L$10*12*(Cohorts!$K$32+Earnings!$L$15)/1.6)*(1+Cohorts!$J$32))*(1+Earnings!$L$12)^AC$47 ->  | AE77: =Cohorts!AG96*(($L$10*12*(Cohorts!$K$32+Earnings!$L$15)/1.6)*(1+Cohorts!$J$32))*(1+Earnings!$L$12)^AD$47 ->  | AF77: =Cohorts!AH96*(($L$10*12*(Cohorts!$K$32+Earnings!$L$15)/1.6)*(1+Cohorts!$J$32))*(1+Earnings!$L$12)^AE$47 ->  | AG77: =Cohorts!AI96*(($L$10*12*(Cohorts!$K$32+Earnings!$L$15)/1.6)*(1+Cohorts!$J$32))*(1+Earnings!$L$12)^AF$47 ->  | AH77: =Cohorts!AJ96*(($L$10*12*(Cohorts!$K$32+Earnings!$L$15)/1.6)*(1+Cohorts!$J$32))*(1+Earnings!$L$12)^AG$47 -> 
C78: 11th | Q78: =Cohorts!S97*(($L$10*12*(Cohorts!$K$32+Earnings!$L$15)/1.6)*(1+Cohorts!$J$32))*(1+Earnings!$L$12)^P$47 ->  | R78: =Cohorts!T97*(($L$10*12*(Cohorts!$K$32+Earnings!$L$15)/1.6)*(1+Cohorts!$J$32))*(1+Earnings!$L$12)^Q$47 ->  | S78: =Cohorts!U97*(($L$10*12*(Cohorts!$K$32+Earnings!$L$15)/1.6)*(1+Cohorts!$J$32))*(1+Earnings!$L$12)^R$47 ->  | T78: =Cohorts!V97*(($L$10*12*(Cohorts!$K$32+Earnings!$L$15)/1.6)*(1+Cohorts!$J$32))*(1+Earnings!$L$12)^S$47 ->  | U78: =Cohorts!W97*(($L$10*12*(Cohorts!$K$32+Earnings!$L$15)/1.6)*(1+Cohorts!$J$32))*(1+Earnings!$L$12)^T$47 ->  | V78: =Cohorts!X97*(($L$10*12*(Cohorts!$K$32+Earnings!$L$15)/1.6)*(1+Cohorts!$J$32))*(1+Earnings!$L$12)^U$47 ->  | W78: =Cohorts!Y97*(($L$10*12*(Cohorts!$K$32+Earnings!$L$15)/1.6)*(1+Cohorts!$J$32))*(1+Earnings!$L$12)^V$47 ->  | X78: =Cohorts!Z97*(($L$10*12*(Cohorts!$K$32+Earnings!$L$15)/1.6)*(1+Cohorts!$J$32))*(1+Earnings!$L$12)^W$47 ->  | Y78: =Cohorts!AA97*(($L$10*12*(Cohorts!$K$32+Earnings!$L$15)/1.6)*(1+Cohorts!$J$32))*(1+Earnings!$L$12)^X$47 ->  | Z78: =Cohorts!AB97*(($L$10*12*(Cohorts!$K$32+Earnings!$L$15)/1.6)*(1+Cohorts!$J$32))*(1+Earnings!$L$12)^Y$47 ->  | AA78: =Cohorts!AC97*(($L$10*12*(Cohorts!$K$32+Earnings!$L$15)/1.6)*(1+Cohorts!$J$32))*(1+Earnings!$L$12)^Z$47 ->  | AB78: =Cohorts!AD97*(($L$10*12*(Cohorts!$K$32+Earnings!$L$15)/1.6)*(1+Cohorts!$J$32))*(1+Earnings!$L$12)^AA$47 ->  | AC78: =Cohorts!AE97*(($L$10*12*(Cohorts!$K$32+Earnings!$L$15)/1.6)*(1+Cohorts!$J$32))*(1+Earnings!$L$12)^AB$47 ->  | AD78: =Cohorts!AF97*(($L$10*12*(Cohorts!$K$32+Earnings!$L$15)/1.6)*(1+Cohorts!$J$32))*(1+Earnings!$L$12)^AC$47 ->  | AE78: =Cohorts!AG97*(($L$10*12*(Cohorts!$K$32+Earnings!$L$15)/1.6)*(1+Cohorts!$J$32))*(1+Earnings!$L$12)^AD$47 ->  | AF78: =Cohorts!AH97*(($L$10*12*(Cohorts!$K$32+Earnings!$L$15)/1.6)*(1+Cohorts!$J$32))*(1+Earnings!$L$12)^AE$47 ->  | AG78: =Cohorts!AI97*(($L$10*12*(Cohorts!$K$32+Earnings!$L$15)/1.6)*(1+Cohorts!$J$32))*(1+Earnings!$L$12)^AF$47 ->  | AH78: =Cohorts!AJ97*(($L$10*12*(Cohorts!$K$32+Earnings!$L$15)/1.6)*(1+Cohorts!$J$32))*(1+Earnings!$L$12)^AG$47 ->  | AI78: =Cohorts!AK97*(($L$10*12*(Cohorts!$K$32+Earnings!$L$15)/1.6)*(1+Cohorts!$J$32))*(1+Earnings!$L$12)^AH$47 -> 
C79: 12th | R79: =Cohorts!T98*(($L$10*12*(Cohorts!$K$32+Earnings!$L$15)/1.6)*(1+Cohorts!$J$32))*(1+Earnings!$L$12)^Q$47 ->  | S79: =Cohorts!U98*(($L$10*12*(Cohorts!$K$32+Earnings!$L$15)/1.6)*(1+Cohorts!$J$32))*(1+Earnings!$L$12)^R$47 ->  | T79: =Cohorts!V98*(($L$10*12*(Cohorts!$K$32+Earnings!$L$15)/1.6)*(1+Cohorts!$J$32))*(1+Earnings!$L$12)^S$47 ->  | U79: =Cohorts!W98*(($L$10*12*(Cohorts!$K$32+Earnings!$L$15)/1.6)*(1+Cohorts!$J$32))*(1+Earnings!$L$12)^T$47 ->  | V79: =Cohorts!X98*(($L$10*12*(Cohorts!$K$32+Earnings!$L$15)/1.6)*(1+Cohorts!$J$32))*(1+Earnings!$L$12)^U$47 ->  | W79: =Cohorts!Y98*(($L$10*12*(Cohorts!$K$32+Earnings!$L$15)/1.6)*(1+Cohorts!$J$32))*(1+Earnings!$L$12)^V$47 ->  | X79: =Cohorts!Z98*(($L$10*12*(Cohorts!$K$32+Earnings!$L$15)/1.6)*(1+Cohorts!$J$32))*(1+Earnings!$L$12)^W$47 ->  | Y79: =Cohorts!AA98*(($L$10*12*(Cohorts!$K$32+Earnings!$L$15)/1.6)*(1+Cohorts!$J$32))*(1+Earnings!$L$12)^X$47 ->  | Z79: =Cohorts!AB98*(($L$10*12*(Cohorts!$K$32+Earnings!$L$15)/1.6)*(1+Cohorts!$J$32))*(1+Earnings!$L$12)^Y$47 ->  | AA79: =Cohorts!AC98*(($L$10*12*(Cohorts!$K$32+Earnings!$L$15)/1.6)*(1+Cohorts!$J$32))*(1+Earnings!$L$12)^Z$47 ->  | AB79: =Cohorts!AD98*(($L$10*12*(Cohorts!$K$32+Earnings!$L$15)/1.6)*(1+Cohorts!$J$32))*(1+Earnings!$L$12)^AA$47 ->  | AC79: =Cohorts!AE98*(($L$10*12*(Cohorts!$K$32+Earnings!$L$15)/1.6)*(1+Cohorts!$J$32))*(1+Earnings!$L$12)^AB$47 ->  | AD79: =Cohorts!AF98*(($L$10*12*(Cohorts!$K$32+Earnings!$L$15)/1.6)*(1+Cohorts!$J$32))*(1+Earnings!$L$12)^AC$47 ->  | AE79: =Cohorts!AG98*(($L$10*12*(Cohorts!$K$32+Earnings!$L$15)/1.6)*(1+Cohorts!$J$32))*(1+Earnings!$L$12)^AD$47 ->  | AF79: =Cohorts!AH98*(($L$10*12*(Cohorts!$K$32+Earnings!$L$15)/1.6)*(1+Cohorts!$J$32))*(1+Earnings!$L$12)^AE$47 ->  | AG79: =Cohorts!AI98*(($L$10*12*(Cohorts!$K$32+Earnings!$L$15)/1.6)*(1+Cohorts!$J$32))*(1+Earnings!$L$12)^AF$47 ->  | AH79: =Cohorts!AJ98*(($L$10*12*(Cohorts!$K$32+Earnings!$L$15)/1.6)*(1+Cohorts!$J$32))*(1+Earnings!$L$12)^AG$47 ->  | AI79: =Cohorts!AK98*(($L$10*12*(Cohorts!$K$32+Earnings!$L$15)/1.6)*(1+Cohorts!$J$32))*(1+Earnings!$L$12)^AH$47 ->  | AJ79: =Cohorts!AL98*(($L$10*12*(Cohorts!$K$32+Earnings!$L$15)/1.6)*(1+Cohorts!$J$32))*(1+Earnings!$L$12)^AI$47 -> 
C80: 13th | S80: =Cohorts!U99*(($L$10*12*(Cohorts!$K$32+Earnings!$L$15)/1.6)*(1+Cohorts!$J$32))*(1+Earnings!$L$12)^R$47 ->  | T80: =Cohorts!V99*(($L$10*12*(Cohorts!$K$32+Earnings!$L$15)/1.6)*(1+Cohorts!$J$32))*(1+Earnings!$L$12)^S$47 ->  | U80: =Cohorts!W99*(($L$10*12*(Cohorts!$K$32+Earnings!$L$15)/1.6)*(1+Cohorts!$J$32))*(1+Earnings!$L$12)^T$47 ->  | V80: =Cohorts!X99*(($L$10*12*(Cohorts!$K$32+Earnings!$L$15)/1.6)*(1+Cohorts!$J$32))*(1+Earnings!$L$12)^U$47 ->  | W80: =Cohorts!Y99*(($L$10*12*(Cohorts!$K$32+Earnings!$L$15)/1.6)*(1+Cohorts!$J$32))*(1+Earnings!$L$12)^V$47 ->  | X80: =Cohorts!Z99*(($L$10*12*(Cohorts!$K$32+Earnings!$L$15)/1.6)*(1+Cohorts!$J$32))*(1+Earnings!$L$12)^W$47 ->  | Y80: =Cohorts!AA99*(($L$10*12*(Cohorts!$K$32+Earnings!$L$15)/1.6)*(1+Cohorts!$J$32))*(1+Earnings!$L$12)^X$47 ->  | Z80: =Cohorts!AB99*(($L$10*12*(Cohorts!$K$32+Earnings!$L$15)/1.6)*(1+Cohorts!$J$32))*(1+Earnings!$L$12)^Y$47 ->  | AA80: =Cohorts!AC99*(($L$10*12*(Cohorts!$K$32+Earnings!$L$15)/1.6)*(1+Cohorts!$J$32))*(1+Earnings!$L$12)^Z$47 ->  | AB80: =Cohorts!AD99*(($L$10*12*(Cohorts!$K$32+Earnings!$L$15)/1.6)*(1+Cohorts!$J$32))*(1+Earnings!$L$12)^AA$47 ->  | AC80: =Cohorts!AE99*(($L$10*12*(Cohorts!$K$32+Earnings!$L$15)/1.6)*(1+Cohorts!$J$32))*(1+Earnings!$L$12)^AB$47 ->  | AD80: =Cohorts!AF99*(($L$10*12*(Cohorts!$K$32+Earnings!$L$15)/1.6)*(1+Cohorts!$J$32))*(1+Earnings!$L$12)^AC$47 ->  | AE80: =Cohorts!AG99*(($L$10*12*(Cohorts!$K$32+Earnings!$L$15)/1.6)*(1+Cohorts!$J$32))*(1+Earnings!$L$12)^AD$47 ->  | AF80: =Cohorts!AH99*(($L$10*12*(Cohorts!$K$32+Earnings!$L$15)/1.6)*(1+Cohorts!$J$32))*(1+Earnings!$L$12)^AE$47 ->  | AG80: =Cohorts!AI99*(($L$10*12*(Cohorts!$K$32+Earnings!$L$15)/1.6)*(1+Cohorts!$J$32))*(1+Earnings!$L$12)^AF$47 ->  | AH80: =Cohorts!AJ99*(($L$10*12*(Cohorts!$K$32+Earnings!$L$15)/1.6)*(1+Cohorts!$J$32))*(1+Earnings!$L$12)^AG$47 ->  | AI80: =Cohorts!AK99*(($L$10*12*(Cohorts!$K$32+Earnings!$L$15)/1.6)*(1+Cohorts!$J$32))*(1+Earnings!$L$12)^AH$47 ->  | AJ80: =Cohorts!AL99*(($L$10*12*(Cohorts!$K$32+Earnings!$L$15)/1.6)*(1+Cohorts!$J$32))*(1+Earnings!$L$12)^AI$47 ->  | AK80: =Cohorts!AM99*(($L$10*12*(Cohorts!$K$32+Earnings!$L$15)/1.6)*(1+Cohorts!$J$32))*(1+Earnings!$L$12)^AJ$47 -> 
C81: 14th | T81: =Cohorts!V100*(($L$10*12*(Cohorts!$K$32+Earnings!$L$15)/1.6)*(1+Cohorts!$J$32))*(1+Earnings!$L$12)^S$47 ->  | U81: =Cohorts!W100*(($L$10*12*(Cohorts!$K$32+Earnings!$L$15)/1.6)*(1+Cohorts!$J$32))*(1+Earnings!$L$12)^T$47 ->  | V81: =Cohorts!X100*(($L$10*12*(Cohorts!$K$32+Earnings!$L$15)/1.6)*(1+Cohorts!$J$32))*(1+Earnings!$L$12)^U$47 ->  | W81: =Cohorts!Y100*(($L$10*12*(Cohorts!$K$32+Earnings!$L$15)/1.6)*(1+Cohorts!$J$32))*(1+Earnings!$L$12)^V$47 ->  | X81: =Cohorts!Z100*(($L$10*12*(Cohorts!$K$32+Earnings!$L$15)/1.6)*(1+Cohorts!$J$32))*(1+Earnings!$L$12)^W$47 ->  | Y81: =Cohorts!AA100*(($L$10*12*(Cohorts!$K$32+Earnings!$L$15)/1.6)*(1+Cohorts!$J$32))*(1+Earnings!$L$12)^X$47 ->  | Z81: =Cohorts!AB100*(($L$10*12*(Cohorts!$K$32+Earnings!$L$15)/1.6)*(1+Cohorts!$J$32))*(1+Earnings!$L$12)^Y$47 ->  | AA81: =Cohorts!AC100*(($L$10*12*(Cohorts!$K$32+Earnings!$L$15)/1.6)*(1+Cohorts!$J$32))*(1+Earnings!$L$12)^Z$47 ->  | AB81: =Cohorts!AD100*(($L$10*12*(Cohorts!$K$32+Earnings!$L$15)/1.6)*(1+Cohorts!$J$32))*(1+Earnings!$L$12)^AA$47 ->  | AC81: =Cohorts!AE100*(($L$10*12*(Cohorts!$K$32+Earnings!$L$15)/1.6)*(1+Cohorts!$J$32))*(1+Earnings!$L$12)^AB$47 ->  | AD81: =Cohorts!AF100*(($L$10*12*(Cohorts!$K$32+Earnings!$L$15)/1.6)*(1+Cohorts!$J$32))*(1+Earnings!$L$12)^AC$47 ->  | AE81: =Cohorts!AG100*(($L$10*12*(Cohorts!$K$32+Earnings!$L$15)/1.6)*(1+Cohorts!$J$32))*(1+Earnings!$L$12)^AD$47 ->  | AF81: =Cohorts!AH100*(($L$10*12*(Cohorts!$K$32+Earnings!$L$15)/1.6)*(1+Cohorts!$J$32))*(1+Earnings!$L$12)^AE$47 ->  | AG81: =Cohorts!AI100*(($L$10*12*(Cohorts!$K$32+Earnings!$L$15)/1.6)*(1+Cohorts!$J$32))*(1+Earnings!$L$12)^AF$47 ->  | AH81: =Cohorts!AJ100*(($L$10*12*(Cohorts!$K$32+Earnings!$L$15)/1.6)*(1+Cohorts!$J$32))*(1+Earnings!$L$12)^AG$47 ->  | AI81: =Cohorts!AK100*(($L$10*12*(Cohorts!$K$32+Earnings!$L$15)/1.6)*(1+Cohorts!$J$32))*(1+Earnings!$L$12)^AH$47 ->  | AJ81: =Cohorts!AL100*(($L$10*12*(Cohorts!$K$32+Earnings!$L$15)/1.6)*(1+Cohorts!$J$32))*(1+Earnings!$L$12)^AI$47 ->  | AK81: =Cohorts!AM100*(($L$10*12*(Cohorts!$K$32+Earnings!$L$15)/1.6)*(1+Cohorts!$J$32))*(1+Earnings!$L$12)^AJ$47 ->  | AL81: =Cohorts!AN100*(($L$10*12*(Cohorts!$K$32+Earnings!$L$15)/1.6)*(1+Cohorts!$J$32))*(1+Earnings!$L$12)^AK$47 -> 
C82: 15th | U82: =Cohorts!W101*(($L$10*12*(Cohorts!$K$32+Earnings!$L$15)/1.6)*(1+Cohorts!$J$32))*(1+Earnings!$L$12)^T$47 ->  | V82: =Cohorts!X101*(($L$10*12*(Cohorts!$K$32+Earnings!$L$15)/1.6)*(1+Cohorts!$J$32))*(1+Earnings!$L$12)^U$47 ->  | W82: =Cohorts!Y101*(($L$10*12*(Cohorts!$K$32+Earnings!$L$15)/1.6)*(1+Cohorts!$J$32))*(1+Earnings!$L$12)^V$47 ->  | X82: =Cohorts!Z101*(($L$10*12*(Cohorts!$K$32+Earnings!$L$15)/1.6)*(1+Cohorts!$J$32))*(1+Earnings!$L$12)^W$47 ->  | Y82: =Cohorts!AA101*(($L$10*12*(Cohorts!$K$32+Earnings!$L$15)/1.6)*(1+Cohorts!$J$32))*(1+Earnings!$L$12)^X$47 ->  | Z82: =Cohorts!AB101*(($L$10*12*(Cohorts!$K$32+Earnings!$L$15)/1.6)*(1+Cohorts!$J$32))*(1+Earnings!$L$12)^Y$47 ->  | AA82: =Cohorts!AC101*(($L$10*12*(Cohorts!$K$32+Earnings!$L$15)/1.6)*(1+Cohorts!$J$32))*(1+Earnings!$L$12)^Z$47 ->  | AB82: =Cohorts!AD101*(($L$10*12*(Cohorts!$K$32+Earnings!$L$15)/1.6)*(1+Cohorts!$J$32))*(1+Earnings!$L$12)^AA$47 ->  | AC82: =Cohorts!AE101*(($L$10*12*(Cohorts!$K$32+Earnings!$L$15)/1.6)*(1+Cohorts!$J$32))*(1+Earnings!$L$12)^AB$47 ->  | AD82: =Cohorts!AF101*(($L$10*12*(Cohorts!$K$32+Earnings!$L$15)/1.6)*(1+Cohorts!$J$32))*(1+Earnings!$L$12)^AC$47 ->  | AE82: =Cohorts!AG101*(($L$10*12*(Cohorts!$K$32+Earnings!$L$15)/1.6)*(1+Cohorts!$J$32))*(1+Earnings!$L$12)^AD$47 ->  | AF82: =Cohorts!AH101*(($L$10*12*(Cohorts!$K$32+Earnings!$L$15)/1.6)*(1+Cohorts!$J$32))*(1+Earnings!$L$12)^AE$47 ->  | AG82: =Cohorts!AI101*(($L$10*12*(Cohorts!$K$32+Earnings!$L$15)/1.6)*(1+Cohorts!$J$32))*(1+Earnings!$L$12)^AF$47 ->  | AH82: =Cohorts!AJ101*(($L$10*12*(Cohorts!$K$32+Earnings!$L$15)/1.6)*(1+Cohorts!$J$32))*(1+Earnings!$L$12)^AG$47 ->  | AI82: =Cohorts!AK101*(($L$10*12*(Cohorts!$K$32+Earnings!$L$15)/1.6)*(1+Cohorts!$J$32))*(1+Earnings!$L$12)^AH$47 ->  | AJ82: =Cohorts!AL101*(($L$10*12*(Cohorts!$K$32+Earnings!$L$15)/1.6)*(1+Cohorts!$J$32))*(1+Earnings!$L$12)^AI$47 ->  | AK82: =Cohorts!AM101*(($L$10*12*(Cohorts!$K$32+Earnings!$L$15)/1.6)*(1+Cohorts!$J$32))*(1+Earnings!$L$12)^AJ$47 ->  | AL82: =Cohorts!AN101*(($L$10*12*(Cohorts!$K$32+Earnings!$L$15)/1.6)*(1+Cohorts!$J$32))*(1+Earnings!$L$12)^AK$47 ->  | AM82: =Cohorts!AO101*(($L$10*12*(Cohorts!$K$32+Earnings!$L$15)/1.6)*(1+Cohorts!$J$32))*(1+Earnings!$L$12)^AL$47 -> 
C83: 16th | V83: =Cohorts!X102*(($L$10*12*(Cohorts!$K$32+Earnings!$L$15)/1.6)*(1+Cohorts!$J$32))*(1+Earnings!$L$12)^U$47 ->  | W83: =Cohorts!Y102*(($L$10*12*(Cohorts!$K$32+Earnings!$L$15)/1.6)*(1+Cohorts!$J$32))*(1+Earnings!$L$12)^V$47 ->  | X83: =Cohorts!Z102*(($L$10*12*(Cohorts!$K$32+Earnings!$L$15)/1.6)*(1+Cohorts!$J$32))*(1+Earnings!$L$12)^W$47 ->  | Y83: =Cohorts!AA102*(($L$10*12*(Cohorts!$K$32+Earnings!$L$15)/1.6)*(1+Cohorts!$J$32))*(1+Earnings!$L$12)^X$47 ->  | Z83: =Cohorts!AB102*(($L$10*12*(Cohorts!$K$32+Earnings!$L$15)/1.6)*(1+Cohorts!$J$32))*(1+Earnings!$L$12)^Y$47 ->  | AA83: =Cohorts!AC102*(($L$10*12*(Cohorts!$K$32+Earnings!$L$15)/1.6)*(1+Cohorts!$J$32))*(1+Earnings!$L$12)^Z$47 ->  | AB83: =Cohorts!AD102*(($L$10*12*(Cohorts!$K$32+Earnings!$L$15)/1.6)*(1+Cohorts!$J$32))*(1+Earnings!$L$12)^AA$47 ->  | AC83: =Cohorts!AE102*(($L$10*12*(Cohorts!$K$32+Earnings!$L$15)/1.6)*(1+Cohorts!$J$32))*(1+Earnings!$L$12)^AB$47 ->  | AD83: =Cohorts!AF102*(($L$10*12*(Cohorts!$K$32+Earnings!$L$15)/1.6)*(1+Cohorts!$J$32))*(1+Earnings!$L$12)^AC$47 ->  | AE83: =Cohorts!AG102*(($L$10*12*(Cohorts!$K$32+Earnings!$L$15)/1.6)*(1+Cohorts!$J$32))*(1+Earnings!$L$12)^AD$47 ->  | AF83: =Cohorts!AH102*(($L$10*12*(Cohorts!$K$32+Earnings!$L$15)/1.6)*(1+Cohorts!$J$32))*(1+Earnings!$L$12)^AE$47 ->  | AG83: =Cohorts!AI102*(($L$10*12*(Cohorts!$K$32+Earnings!$L$15)/1.6)*(1+Cohorts!$J$32))*(1+Earnings!$L$12)^AF$47 ->  | AH83: =Cohorts!AJ102*(($L$10*12*(Cohorts!$K$32+Earnings!$L$15)/1.6)*(1+Cohorts!$J$32))*(1+Earnings!$L$12)^AG$47 ->  | AI83: =Cohorts!AK102*(($L$10*12*(Cohorts!$K$32+Earnings!$L$15)/1.6)*(1+Cohorts!$J$32))*(1+Earnings!$L$12)^AH$47 ->  | AJ83: =Cohorts!AL102*(($L$10*12*(Cohorts!$K$32+Earnings!$L$15)/1.6)*(1+Cohorts!$J$32))*(1+Earnings!$L$12)^AI$47 ->  | AK83: =Cohorts!AM102*(($L$10*12*(Cohorts!$K$32+Earnings!$L$15)/1.6)*(1+Cohorts!$J$32))*(1+Earnings!$L$12)^AJ$47 ->  | AL83: =Cohorts!AN102*(($L$10*12*(Cohorts!$K$32+Earnings!$L$15)/1.6)*(1+Cohorts!$J$32))*(1+Earnings!$L$12)^AK$47 ->  | AM83: =Cohorts!AO102*(($L$10*12*(Cohorts!$K$32+Earnings!$L$15)/1.6)*(1+Cohorts!$J$32))*(1+Earnings!$L$12)^AL$47 ->  | AN83: =Cohorts!AP102*(($L$10*12*(Cohorts!$K$32+Earnings!$L$15)/1.6)*(1+Cohorts!$J$32))*(1+Earnings!$L$12)^AM$47 -> 
C84: 17th | W84: =Cohorts!Y103*(($L$10*12*(Cohorts!$K$32+Earnings!$L$15)/1.6)*(1+Cohorts!$J$32))*(1+Earnings!$L$12)^V$47 ->  | X84: =Cohorts!Z103*(($L$10*12*(Cohorts!$K$32+Earnings!$L$15)/1.6)*(1+Cohorts!$J$32))*(1+Earnings!$L$12)^W$47 ->  | Y84: =Cohorts!AA103*(($L$10*12*(Cohorts!$K$32+Earnings!$L$15)/1.6)*(1+Cohorts!$J$32))*(1+Earnings!$L$12)^X$47 ->  | Z84: =Cohorts!AB103*(($L$10*12*(Cohorts!$K$32+Earnings!$L$15)/1.6)*(1+Cohorts!$J$32))*(1+Earnings!$L$12)^Y$47 ->  | AA84: =Cohorts!AC103*(($L$10*12*(Cohorts!$K$32+Earnings!$L$15)/1.6)*(1+Cohorts!$J$32))*(1+Earnings!$L$12)^Z$47 ->  | AB84: =Cohorts!AD103*(($L$10*12*(Cohorts!$K$32+Earnings!$L$15)/1.6)*(1+Cohorts!$J$32))*(1+Earnings!$L$12)^AA$47 ->  | AC84: =Cohorts!AE103*(($L$10*12*(Cohorts!$K$32+Earnings!$L$15)/1.6)*(1+Cohorts!$J$32))*(1+Earnings!$L$12)^AB$47 ->  | AD84: =Cohorts!AF103*(($L$10*12*(Cohorts!$K$32+Earnings!$L$15)/1.6)*(1+Cohorts!$J$32))*(1+Earnings!$L$12)^AC$47 ->  | AE84: =Cohorts!AG103*(($L$10*12*(Cohorts!$K$32+Earnings!$L$15)/1.6)*(1+Cohorts!$J$32))*(1+Earnings!$L$12)^AD$47 ->  | AF84: =Cohorts!AH103*(($L$10*12*(Cohorts!$K$32+Earnings!$L$15)/1.6)*(1+Cohorts!$J$32))*(1+Earnings!$L$12)^AE$47 ->  | AG84: =Cohorts!AI103*(($L$10*12*(Cohorts!$K$32+Earnings!$L$15)/1.6)*(1+Cohorts!$J$32))*(1+Earnings!$L$12)^AF$47 ->  | AH84: =Cohorts!AJ103*(($L$10*12*(Cohorts!$K$32+Earnings!$L$15)/1.6)*(1+Cohorts!$J$32))*(1+Earnings!$L$12)^AG$47 ->  | AI84: =Cohorts!AK103*(($L$10*12*(Cohorts!$K$32+Earnings!$L$15)/1.6)*(1+Cohorts!$J$32))*(1+Earnings!$L$12)^AH$47 ->  | AJ84: =Cohorts!AL103*(($L$10*12*(Cohorts!$K$32+Earnings!$L$15)/1.6)*(1+Cohorts!$J$32))*(1+Earnings!$L$12)^AI$47 ->  | AK84: =Cohorts!AM103*(($L$10*12*(Cohorts!$K$32+Earnings!$L$15)/1.6)*(1+Cohorts!$J$32))*(1+Earnings!$L$12)^AJ$47 ->  | AL84: =Cohorts!AN103*(($L$10*12*(Cohorts!$K$32+Earnings!$L$15)/1.6)*(1+Cohorts!$J$32))*(1+Earnings!$L$12)^AK$47 ->  | AM84: =Cohorts!AO103*(($L$10*12*(Cohorts!$K$32+Earnings!$L$15)/1.6)*(1+Cohorts!$J$32))*(1+Earnings!$L$12)^AL$47 ->  | AN84: =Cohorts!AP103*(($L$10*12*(Cohorts!$K$32+Earnings!$L$15)/1.6)*(1+Cohorts!$J$32))*(1+Earnings!$L$12)^AM$47 ->  | AO84: =Cohorts!AQ103*(($L$10*12*(Cohorts!$K$32+Earnings!$L$15)/1.6)*(1+Cohorts!$J$32))*(1+Earnings!$L$12)^AN$47 -> 
C85: 18th | X85: =Cohorts!Z104*(($L$10*12*(Cohorts!$K$32+Earnings!$L$15)/1.6)*(1+Cohorts!$J$32))*(1+Earnings!$L$12)^W$47 ->  | Y85: =Cohorts!AA104*(($L$10*12*(Cohorts!$K$32+Earnings!$L$15)/1.6)*(1+Cohorts!$J$32))*(1+Earnings!$L$12)^X$47 ->  | Z85: =Cohorts!AB104*(($L$10*12*(Cohorts!$K$32+Earnings!$L$15)/1.6)*(1+Cohorts!$J$32))*(1+Earnings!$L$12)^Y$47 ->  | AA85: =Cohorts!AC104*(($L$10*12*(Cohorts!$K$32+Earnings!$L$15)/1.6)*(1+Cohorts!$J$32))*(1+Earnings!$L$12)^Z$47 ->  | AB85: =Cohorts!AD104*(($L$10*12*(Cohorts!$K$32+Earnings!$L$15)/1.6)*(1+Cohorts!$J$32))*(1+Earnings!$L$12)^AA$47 ->  | AC85: =Cohorts!AE104*(($L$10*12*(Cohorts!$K$32+Earnings!$L$15)/1.6)*(1+Cohorts!$J$32))*(1+Earnings!$L$12)^AB$47 ->  | AD85: =Cohorts!AF104*(($L$10*12*(Cohorts!$K$32+Earnings!$L$15)/1.6)*(1+Cohorts!$J$32))*(1+Earnings!$L$12)^AC$47 ->  | AE85: =Cohorts!AG104*(($L$10*12*(Cohorts!$K$32+Earnings!$L$15)/1.6)*(1+Cohorts!$J$32))*(1+Earnings!$L$12)^AD$47 ->  | AF85: =Cohorts!AH104*(($L$10*12*(Cohorts!$K$32+Earnings!$L$15)/1.6)*(1+Cohorts!$J$32))*(1+Earnings!$L$12)^AE$47 ->  | AG85: =Cohorts!AI104*(($L$10*12*(Cohorts!$K$32+Earnings!$L$15)/1.6)*(1+Cohorts!$J$32))*(1+Earnings!$L$12)^AF$47 ->  | AH85: =Cohorts!AJ104*(($L$10*12*(Cohorts!$K$32+Earnings!$L$15)/1.6)*(1+Cohorts!$J$32))*(1+Earnings!$L$12)^AG$47 ->  | AI85: =Cohorts!AK104*(($L$10*12*(Cohorts!$K$32+Earnings!$L$15)/1.6)*(1+Cohorts!$J$32))*(1+Earnings!$L$12)^AH$47 ->  | AJ85: =Cohorts!AL104*(($L$10*12*(Cohorts!$K$32+Earnings!$L$15)/1.6)*(1+Cohorts!$J$32))*(1+Earnings!$L$12)^AI$47 ->  | AK85: =Cohorts!AM104*(($L$10*12*(Cohorts!$K$32+Earnings!$L$15)/1.6)*(1+Cohorts!$J$32))*(1+Earnings!$L$12)^AJ$47 ->  | AL85: =Cohorts!AN104*(($L$10*12*(Cohorts!$K$32+Earnings!$L$15)/1.6)*(1+Cohorts!$J$32))*(1+Earnings!$L$12)^AK$47 ->  | AM85: =Cohorts!AO104*(($L$10*12*(Cohorts!$K$32+Earnings!$L$15)/1.6)*(1+Cohorts!$J$32))*(1+Earnings!$L$12)^AL$47 ->  | AN85: =Cohorts!AP104*(($L$10*12*(Cohorts!$K$32+Earnings!$L$15)/1.6)*(1+Cohorts!$J$32))*(1+Earnings!$L$12)^AM$47 ->  | AO85: =Cohorts!AQ104*(($L$10*12*(Cohorts!$K$32+Earnings!$L$15)/1.6)*(1+Cohorts!$J$32))*(1+Earnings!$L$12)^AN$47 ->  | AP85: =Cohorts!AR104*(($L$10*12*(Cohorts!$K$32+Earnings!$L$15)/1.6)*(1+Cohorts!$J$32))*(1+Earnings!$L$12)^AO$47 -> 
